{"text_format":"1","workbook":"xlsx","n_sheets":15,"sheets":["Instructions","DNSP Inputs General","DNSP Inputs O & M","DNSP Inputs Capex","PL Tariffs","PL Tariff Components","Cashflow Summary","Charges Summary","O & M 2016-2020","Capex 2016-2020","WACC","Depn & WACC Post 2004","Total RAB","RAB 2001 to 2004","Inputs PL Final Decision 2004"],"not_rendered":{"charts":0,"images":0,"macros":0,"external_links":0,"defined_names":4,"comments":1,"pivot_tables":0},"unopened":[],"bounds":{"document_bytes":16777216,"sheet_cells":100000,"rows_first":2000,"rows_last":500,"rows_between":2000,"halvings":0,"cell_chars":16384,"cell_head_chars":4096},"cells_cut":0,"cells_raw":0,"read":"whole","date_system":"1900"}

{"sheet":"Instructions","index":0,"n_rows":70,"n_cols":12,"rows_kept":70,"cut":false,"hidden":false,"merged":[]}
[{"$f":"'DNSP Inputs O & M'!$A$3","v":"Powercor"}]
[]
["Instructions"]
[]
["This model is to be used for the setting of Public Lighting Tariffs for the Regulatory Period 2016 to 2020 based on forecast inflation rates and Real Pre Tax WACC."]
[]
["Distributor data input fields are shaded",null,"      and located in tabs \"DNSP Inputs General\" , \"DNSP Inputs O & M\" and  \"DNSP Inputs Capex\""]
["NOTE : All Distributor data input fields have been populated with AER Preliminary Decision data in this model."]
[]
[]
[]
["This model will also to be used for the annual Public Lighting Tariff Approvals in the Regulatory Period 2016 to 2020 based on actual inflation rates and Real Pre Tax WACC."]
[]
[]
[]
[]
[]
[]
[]
[]
[]
[]
[]
[]
[]
[]
[]
[]
[]
[]
[]
[]
[]
[]
[]
[]
[]
[]
[]
[]
[]
[]
[]
[]
[]
[]
[]
[]
[]
[]
[]
[]
[]
[]
[]
[]
[]
[]
[]
[]
[]
[]
[]
[]
[]
[]
[]
[]
[]
[null,null,null,null,null,null,null,{"$f":"G70","v":0},{"$f":"H70","v":0},{"$f":"I70","v":0},{"$f":"J70","v":0},{"$f":"K70","v":0}]

{"sheet":"DNSP Inputs General","index":1,"n_rows":77,"n_cols":15,"rows_kept":77,"cut":false,"hidden":false,"merged":[[38,9,38,14],[2,9,2,14],[17,9,17,14],[17,5,17,8],[38,5,38,8],[2,3,2,8]]}
[{"$f":"'DNSP Inputs O & M'!$A$3","v":"Powercor"}]
[null,2009,null,2009,2010,2011,2012,2013,2014,2015,2016,2017,2018,2019,2020]
["Capital Expenditure","Submission Model",null,"Nominal $ - Actual",null,null,null,null,null,"Real 2015 $ - Forecast"]
["(Net of customer contributions)"]
[]
["Poles and Brackets",216473.87467133769,{"$f":"B6/B$14","v":0.20000000000000004},{"$f":"D$15*C6","v":243213.85000000003},1063986.6485714279,735187.59600000049,1695675.3889145812,2267621.4713558382,3028236.0919746589,4439699.1610149844,{"$f":"'Capex 2016-2020'!B23","v":777015.48904534976},{"$f":"'Capex 2016-2020'!C23","v":778238.6045723476},{"$f":"'Capex 2016-2020'!D23","v":779982.58530712209},{"$f":"'Capex 2016-2020'!E23","v":781998.94524147711},{"$f":"'Capex 2016-2020'!F23","v":784140.88379628875}]
[]
["Existing Lights"]
["Luminaires",622405.68445503013,{"$f":"B9/B$14","v":0.57504000000000011},{"$f":"D$15*C9","v":699288.46152000013},540539.04581485712,437172.59589120012,389009.32072819944,487489.20783708326,811892.12291404186,1346500.5544174933,{"$f":"'Capex 2016-2020'!B13-'Capex 2016-2020'!B30","v":1327030.1319316626},{"$f":"'Capex 2016-2020'!C13-'Capex 2016-2020'!C30","v":1161659.5031210836},{"$f":"'Capex 2016-2020'!D13-'Capex 2016-2020'!D30","v":1617438.4962092934},{"$f":"'Capex 2016-2020'!E13-'Capex 2016-2020'!E30","v":1633175.5282463375},{"$f":"'Capex 2016-2020'!F13-'Capex 2016-2020'!F30","v":1654990.5674956399}]
[]
["Energy Efficient Lights"]
["Luminaires and Ballasts",243489.81423032063,{"$f":"B12/B$14","v":0.22496000000000002},{"$f":"D$15*C12","v":273566.93848000001},211462.96561371427,171025.22810880005,152183.39035721993,190709.46750666085,317618.34302090784,526761.20743210788,{"$f":"'Capex 2016-2020'!B18","v":53526.26546710018},{"$f":"'Capex 2016-2020'!C18","v":69000.906412973374},{"$f":"'Capex 2016-2020'!D18","v":74324.249179345628},{"$f":"'Capex 2016-2020'!E18","v":79582.692492698814},{"$f":"'Capex 2016-2020'!F18","v":84696.769076833065}]
[]
["Total Net Capex",{"$f":"SUM(B6,B9,B12)","v":1082369.3733566883},null,{"$f":"SUM(D6,D9,D12)","v":1216069.2500000002},{"$f":"SUM(E6,E9,E12)","v":1815988.6599999992},1343385.4200000006,2236868.1000000006,2945820.1466995822,4157746.5579096088,6312960.9228645861,2157571.8864441128,2008899.0141064045,2471745.3306957609,2494757.1659805137,2523828.2203687616]
[null,null,null,1216069.25,1815988.6599999997]
["Source : '[Powercor 2008-13 - Category Ananlysis RIN - responses CONSOLIDATED- 2 June 2014 - PUBLIC.xlsx]4.1 Public lighting'!$M$52:$N$52"]
[null,null,null,null,null,2011,2012,2013,2014,2015,2016,2017,2018,2019,2020]
["Operating and Maintenance Expenditure",null,null,null,null,"Nominal $ - Actual",null,null,null,"Real 2015 $ - Forecast"]
[]
["Total O & M",null,null,null,null,7601585.5695493072,7887657.1211831504,6534655.7723428346,6930542.0292655798,7240658.6989408936,{"$f":"'Cashflow Summary'!K83","v":5397865.8102038261},{"$f":"'Cashflow Summary'!L83","v":5446253.402011523},{"$f":"'Cashflow Summary'!M83","v":5530007.5997358123},{"$f":"'Cashflow Summary'!N83","v":5638211.2556585437},{"$f":"'Cashflow Summary'!O83","v":5769763.0850770716}]
[]
[]
[]
["WACC"]
["Regulatory Period",2016,2017,2018,2019,2020]
["Real Pre Tax WACC",4.3470888279073527E-2,4.3470888279073527E-2,4.3470888279073527E-2,4.3470888279073527E-2,4.3470888279073527E-2]
[]
[]
["CPI Index","CPI Index","Actual CPI","F'cast CPI"]
["2014-09-30",106.4]
["2015-09-30",null,{"$f":"IF(B31=\"\",\"\",B31/B30-1)","v":""},2.32307982099372E-2]
["2016-09-30",null,{"$f":"D32","v":1.0232558139534831E-2},{"$f":"108.6/107.5-1","v":1.0232558139534831E-2}]
["2017-06-30",null,1.93370165745856E-2,1.93370165745856E-2]
["2018-06-30",null,"",2.32307982099372E-2]
["2019-06-30",null,"",2.32307982099372E-2]
[]
[]
["Number Of Lights",null,null,null,{"$f":"J$2","v":2015},{"$f":"F$2","v":2011},2012,2013,2014,2015,2016,2017,2018,2019,2020]
[null,null,null,null,"Actual Prices","Actual Volumes",null,null,null,"Forecast Volumes"]
["Existing Lights","Reference Light",null,"Price Factor"]
["Mercury vapour 80 watt",{"$f":"A$41","v":"Mercury vapour 80 watt"},null,1,53.01,106614.99999999999,105071.99999999999,104639.99999999999,88973.999999999985,70160,59941.906799999997,48894.156059999994,44004.740453999999,39604.2664086,35643.839767739999]
["Sodium high pressure 150 watt",{"$f":"A$42","v":"Sodium high pressure 150 watt"},null,1,87.39,25668,26439.999999999996,27226.000000000011,27857.000000000004,28254,29515.687151415186,30833.715156091719,32210.599924366532,33648.969714978419,35151.570152004926]
["Sodium high pressure 250 watt",{"$f":"A$43","v":"Sodium high pressure 250 watt"},null,1,90.27,11647.000000000004,12124.999999999995,12626.999999999998,12943,13118.000000000004,13562.770412284883,14022.620922118478,14498.062825521833,14989.624754187744,15497.853263252824]
["Fluorescent 20 watt",{"$f":"A$41","v":"Mercury vapour 80 watt"},null,2.12,147.38,3,130,0,0,0,0,0,0,0,0]
["Fluorescent 40 watt",{"$f":"A$41","v":"Mercury vapour 80 watt"},null,2.12,147.38,118,242,4,0,0,0,0,0,0,0]
["Mercury vapour 50 watt",{"$f":"A$41","v":"Mercury vapour 80 watt"},null,1.39,73.69,443.99999999999994,378,360.99999999999994,306.00000000000006,217.00000000000003,203.49179295031701,190.82446911582801,178.94568368282134,167.80635029187832,157.36043819973855]
["Mercury vapour 125 watt",{"$f":"A$41","v":"Mercury vapour 80 watt"},null,1.35,71.569999999999993,1485.0000000000002,1493,1507.0000000000002,1170.0000000000002,1022.9999999999999,1062.1329306484695,1102.7628175639361,1144.9469239778564,1188.7447036183296,1234.2178845034045]
["Mercury vapour 250 watt",{"$f":"A$43","v":"Sodium high pressure 250 watt"},null,0.76,68.599999999999994,486,345.00000000000006,316,287.00000000000011,280.00000000000006,215.26761623123772,165.50052356385513,127.23893997361742,97.822940356822016,75.207539940512916]
["Mercury vapour 400 watt",{"$f":"A$43","v":"Sodium high pressure 250 watt"},null,0.88,79.44,160,121,115.00000000000001,101.99999999999999,93,82.821479750001529,73.756962451396916,65.684524431075189,58.495586129642732,52.093451635491135]
["Mercury vapour 700 watt",{"$f":"A$43","v":"Sodium high pressure 250 watt"},null,1.33,120.06,2,2,0,0,0,0,0,0,0,0]
["Sodium low pressure 90 watt",{"$f":"A$42","v":"Sodium high pressure 150 watt"},null,1.35,117.98,0,0,0,2,0,0,0,0,0,0]
["Sodium low pressure 180 watt",{"$f":"A$42","v":"Sodium high pressure 150 watt"},null,1.35,117.28,0,0,0,0,0,0,0,0,0,0]
["Sodium high pressure 400 watt",{"$f":"A$43","v":"Sodium high pressure 250 watt"},null,1.33,120.06,759.00000000000023,766.00000000000011,769.99999999999977,773.99999999999989,760.00000000000011,762.61367769258311,765.23634395237752,767.86802969151177,770.50876592842269,773.15858378822099]
["Incandescent 100 watt",{"$f":"A$41","v":"Mercury vapour 80 watt"},null,2.78,147.38,13,13,0,0,0,0,0,0,0,0]
["Incandescent 150 watt",{"$f":"A$41","v":"Mercury vapour 80 watt"},null,2.78,147.38,5,5,0,0,0,0,0,0,0,0]
["Metal halide 250 watt",{"$f":"A$43","v":"Sodium high pressure 250 watt"},null,1.33,120.06,406,418,351,366,356,363.12,370.38240000000002,377.79004800000001,385.34584896000001,393.05276593920001]
["Metal halide 400 watt",{"$f":"A$43","v":"Sodium high pressure 250 watt"},null,1.33,120.06,17,17,0,0,0,0,0,0,0,0]
["Metal halide 70 watt",{"$f":"A$41","v":"Mercury vapour 80 watt"},null,2.12,null,0,15,8,7,8,8.16,8.3231999999999999,8.4896639999999994,8.6594572799999998,8.8326464256000001]
["Metal halide 150 watt",{"$f":"A$42","v":"Sodium high pressure 150 watt"},null,1.33,null,0,0,35,47,50,51,52.02,53.060400000000001,54.121608000000002,55.204040160000005]
[]
[]
[]
[]
[]
["Total Existing Lights",null,null,null,null,{"$f":"SUM(F41:F64)","v":147828},147581.99999999997,147960,132835,114319,105768.97186097267,96479.298854857596,93437.427417645216,90974.366138331257,89042.390533589903]
[]
["Energy Efficient Lights","Reference Light",null,"Price Factor"]
["T5 2X14W",{"$f":"A$68","v":"T5 2X14W"},null,1,33.61,1468,2090,3251,10327,10664.999999999998,10451.699999999999,10242.665999999999,10037.812679999999,9837.0564263999986,9640.3152978719991]
["T5 2X24W",{"$f":"A$68","v":"T5 2X14W"},null,0.98378581126179521,null,82,159,272,819,1480.0000000000002,1450.4,1421.3920000000001,1392.96416,1365.1048768000001,1337.802779264]
["CF32","T5 2X14W",null,0.96128564523509352,null,281,2006,2071,3092,3089,3027.22,2966.6755999999996,2907.3420879999994,2849.1952462399995,2792.2113413151997]
["CF42","T5 2X14W",null,0.96128564523509352,null,700,1789,3214,4139,4515,4424.7,4336.2060000000001,4249.4818800000003,4164.4922424000006,4081.2023975520005]
["Category P LED 18 Watt",{"$f":"A$72","v":"Category P LED 18 Watt"},null,1,null,0,0,0,8017.0000000000009,26847,37065.375199999995,52924.438534000001,57158.393616720008,61731.065106057613,66669.550314542226]
["Category P LED 47 Watt",{"$f":"A$72","v":"Category P LED 18 Watt"},null,1,null,0,0,0,0,0,0,0,0,0,0]
[]
["Total Energy Efficient Lights",null,null,null,null,{"$f":"SUM(F68:F74)","v":2531},6044,8808,26394,46596,56419.395199999992,71891.378133999999,75745.994424720004,79946.913897897612,84521.08213054543]
[]
["Total Number of Lights",null,null,null,null,{"$f":"SUM(F65,F75)","v":150359},153625.99999999997,156768,159229,160915,162188.36706097267,168370.67698885759,169183.42184236523,170921.28003622888,173563.47266413533]

{"sheet":"DNSP Inputs O & M","index":2,"n_rows":214,"n_cols":8,"rows_kept":214,"cut":false,"hidden":false,"merged":[[4,2,4,7],[2,2,2,7]]}
["Public Lighting Cost Build-up Model"]
[]
["Powercor",null,"O & M Data Inputs"]
[]
[null,null,"Real 2015 $ "]
[]
["Input parameters",null,2015,2016,2017,2018,2019,2020]
[]
["Inputs - all lamps"]
[]
["Material premium for rural areas",null,0.05,0.05,0.05,0.05,0.05,0.05]
["Labour rate (per hour)",null,98.073152427599211,100,{"$f":"D12+(D12*0.0037)","v":100.37},{"$f":"E12+(E12*0.0079)","v":101.16292300000001},{"$f":"F12+(F12*0.0096)","v":102.13408706080001},{"$f":"G12+(G12*0.0102)","v":103.17585474882017}]
["Labour rate for night patrols (per hour)",null,112.78663612513458,119.78,{"$f":"D13+(D13*0.0037)","v":120.223186},{"$f":"E13+(E13*0.0079)","v":121.1729491694},{"$f":"F13+(F13*0.0096)","v":122.33620948142624},{"$f":"G13+(G13*0.0102)","v":123.58403881813679}]
["Elevated platform vehicle (per hour) - urban MV,urban T5",null,39.70489020746119,45.38,45.38,45.38,45.38,45.38]
["Elevated platform vehicle (per hour) - rural MV, rural T5, S-HP",null,51.049144552450102,57.553455530448915,58.793154718775355,59.813152919549431,60.839187511541702,61.900611933039357]
["Patrol vehicle (per hour)",null,28.848438799306802,31.08,31.08,31.08,31.08,31.08]
["Number of hours in a day",null,8,8,8,8,8,8]
["Indirect overheads",null,0.25,0.25,0.25,0.25,0.25,0.25]
[]
[]
[]
["Inputs - MV80"]
[]
["Depreciation period","years",20,{"$f":"C24","v":20},{"$f":"D24","v":20},{"$f":"E24","v":20},{"$f":"F24","v":20},{"$f":"G24","v":20}]
["Lamps - bulk change","years",4,4,4,4,4,4]
["PE cells - bulk change","years",8,8,8,8,8,8]
["Proportion of lamps that fail between bulk change",null,0.15,0.1554544767364745,0.1554544767364745,0.1554544767364745,0.1554544767364745,0.1554544767364745]
["Unit cost - lamp",null,5.6385491294896264,5.7113799058629979,5.7113799058629979,5.7113799058629979,5.7113799058629979,5.7113799058629979]
["Unit cost - PE cell",null,22.763945610302756,23.057977956930479,23.057977956930479,23.057977956930479,23.057977956930479,23.057977956930479]
["Unit cost - luminaire",null,195.62187406577252,198.14863984126438,198.14863984126438,198.14863984126438,198.14863984126438,198.14863984126438]
["Unit cost - miscellaneous materials (bulk lamp)",null,1.233818190260312,1.2497549028146602,1.2497549028146602,1.2497549028146602,1.2497549028146602,1.2497549028146602]
["Unit cost - miscellaneous materials (repair)",null,12.338181902603122,12.497549028146603,12.497549028146603,12.497549028146603,12.497549028146603,12.497549028146603]
["Number of men in crew",null,2,2,2,2,2,2]
["Number of bulk lamp changes in 1 day - urban",null,86.4,86.4,86.4,86.4,86.4,86.4]
["Number of bulk lamp changes in 1 day - rural",null,72,72,72,72,72,72]
["Number of bulk lamp changes in 1 day - remote",null,60,60,60,60,60,60]
["Number of repairs in 1 day - urban",null,28.8,28.8,28.8,28.8,28.8,28.8]
["Number of repairs in 1 day - rural",null,24,24,24,24,24,24]
["Number of repairs in 1 day - remote",null,19.2,19.2,19.2,19.2,19.2,19.2]
["   % of repairs - lamps",null,0.6,0.6,0.6,0.6,0.6,0.6]
["   % of repairs - PE cells",null,0.5,0.5,0.5,0.5,0.5,0.5]
["   % of repairs - luminaires",null,0.15,0.15,0.15,0.15,0.15,0.15]
["   % of repairs - other",null,0.1,0.1,0.1,0.1,0.1,0.1]
[]
["Other Maintenance and Repair costs"]
["Traffic control costs",null,27835.569525130526,38589.468918820465,36745.478454813478,36378.616961725616,35953.951383210078,35486.856227676704]
["Other costs : Describe…………………………………….",null,0,0,0,0,0,0]
[null,null,{"$f":"SUM(C46:C47)","v":27835.569525130526},38589.468918820465,36745.478454813478,36378.616961725616,35953.951383210078,35486.856227676704]
["Number of Lights",null,{"$f":"'DNSP Inputs General'!J41","v":70160},{"$f":"'DNSP Inputs General'!K41","v":59941.906799999997},{"$f":"'DNSP Inputs General'!L41","v":48894.156059999994},{"$f":"'DNSP Inputs General'!M41","v":44004.740453999999},{"$f":"'DNSP Inputs General'!N41","v":39604.2664086},{"$f":"'DNSP Inputs General'!O41","v":35643.839767739999}]
["Unit Cost",null,{"$f":"IF(C49=0,0,C48/C49)","v":0.39674414944598813},0.64378113708622409,0.75153109115374883,0.82669768271338195,0.90783025778764925,0.99559577360109852]
[]
["Location of selected public lighting assets within distributors' areas (%)"]
["Urban",null,0.39,0.75370609721831971,0.75370609721831971,0.75370609721831971,0.75370609721831971,0.75370609721831971]
["Rural",null,0.57099999999999995,0.18851362742343356,0.18851362742343356,0.18851362742343356,0.18851362742343356,0.18851362742343356]
["Remote",null,3.9E-2,5.7780275358246695E-2,5.7780275358246695E-2,5.7780275358246695E-2,5.7780275358246695E-2,5.7780275358246695E-2]
[]
[]
[]
["Inputs - S-HP150"]
[]
["Depreciation period ","years",20,{"$f":"C61","v":20},{"$f":"D61","v":20},{"$f":"E61","v":20},{"$f":"F61","v":20},{"$f":"G61","v":20}]
["Number of patrols per year",null,3,3,3,3,3,3]
["Lamps - frequency of replacement","years",5,5,5,5,5,5]
["PE cells - frequency of replacement","years",10,10,10,10,10,10]
["Unit cost - lamp",null,40.777691188103312,41.304399538024512,41.304399538024512,41.304399538024512,41.304399538024512,41.304399538024512]
["Unit cost - PE cell",null,22.147036515172601,22.43310050552315,22.43310050552315,22.43310050552315,22.43310050552315,22.43310050552315]
["Unit cost - miscellaneous materials",null,2.4676363805206241,2.4995098056293203,2.4995098056293203,2.4995098056293203,2.4995098056293203,2.4995098056293203]
["Number of men in crew - road patrols",null,2,2,2,2,2,2]
["Number of men in crew - repairs",null,2,2,2,2,2,2]
["Number of lamps patrolled in 1 day - urban",null,3000,3000,3000,3000,3000,3000]
["Number of lamps patrolled in 1 day - rural",null,2000,2000,2000,2000,2000,2000]
["Number of lamps patrolled in 1 day - remote",null,1000,1000,1000,1000,1000,1000]
["Number of repairs in 1 day - urban",null,19.2,19.2,19.2,19.2,19.2,19.2]
["Number of repairs in 1 day - rural",null,15.36,15.36,15.36,15.36,15.36,15.36]
["Number of repairs in 1 day - remote",null,11.52,11.52,11.52,11.52,11.52,11.52]
[]
["Other Maintenance and Repair costs"]
["Traffic control costs",null,12819.00740983747,62814.606790200953,64767.701676507073,68020.853274675363,71108.118474637842,74041.61862262449]
["Other costs : Describe…………………………………….",null,0,0,0,0,0,0]
[null,null,{"$f":"SUM(C78:C79)","v":12819.00740983747},62814.606790200953,64767.701676507073,68020.853274675363,71108.118474637842,74041.61862262449]
["Number of Lights",null,{"$f":"'DNSP Inputs General'!J42","v":28254},{"$f":"'DNSP Inputs General'!K42","v":29515.687151415186},{"$f":"'DNSP Inputs General'!L42","v":30833.715156091719},{"$f":"'DNSP Inputs General'!M42","v":32210.599924366532},{"$f":"'DNSP Inputs General'!N42","v":33648.969714978419},{"$f":"'DNSP Inputs General'!O42","v":35151.570152004926}]
["Unit Cost",null,{"$f":"IF(C81=0,0,C80/C81)","v":0.45370593225162703},2.1281770086517935,2.1005480964142307,2.1117536908469452,2.1132331562289988,2.1063530961049093]
[]
["Location of selected public lighting assets within distributors' areas (%)"]
["Urban",null,0.52,0.78494507861296581,0.78494507861296581,0.78494507861296581,0.78494507861296581,0.78494507861296581]
["Rural",null,0.441,0.18511738100366143,0.18511738100366143,0.18511738100366143,0.18511738100366143,0.18511738100366143]
["Remote",null,3.9E-2,2.9937540383372818E-2,2.9937540383372818E-2,2.9937540383372818E-2,2.9937540383372818E-2,2.9937540383372818E-2]
[]
[]
[]
["Inputs - S-HP250"]
[]
["Depreciation period ","years",{"$f":"C61","v":20},20,20,20,20,20]
["Number of patrols per year",null,3,3,3,3,3,3]
["Lamps - frequency of replacement","years",5,5,5,5,5,5]
["PE cells - frequency of replacement","years",10,10,10,10,10,10]
["Unit cost - lamp",null,40.975102098544966,41.304399538024512,41.304399538024512,41.304399538024512,41.304399538024512,41.304399538024512]
["Unit cost - PE cell",null,22.147036515172601,22.43310050552315,22.43310050552315,22.43310050552315,22.43310050552315,22.43310050552315]
["Unit cost - miscellaneous materials",null,2.4676363805206241,2.4995098056293203,2.4995098056293203,2.4995098056293203,2.4995098056293203,2.4995098056293203]
["Number of men in crew - road patrols",null,{"$f":"C68","v":2},2,2,2,2,2]
["Number of men in crew - repairs",null,2,2,2,2,2,2]
["Number of lamps patrolled in 1 day - urban",null,{"$f":"C70","v":3000},3000,3000,3000,3000,3000]
["Number of lamps patrolled in 1 day - rural",null,2000,2000,2000,2000,2000,2000]
["Number of lamps patrolled in 1 day - remote",null,1000,1000,1000,1000,1000,1000]
["Number of repairs in 1 day - urban",null,19.2,19.2,19.2,19.2,19.2,19.2]
["Number of repairs in 1 day - rural",null,15.36,15.36,15.36,15.36,15.36,15.36]
["Number of repairs in 1 day - remote",null,11.52,11.52,11.52,11.52,11.52,11.52]
[]
["Other Maintenance and Repair costs"]
["Traffic control costs",null,12819.00740983747,28587.547845579647,29173.099353910089,30323.127116435528,31373.207672877372,32331.322322947912]
["Other costs : Describe…………………………………….",null,0,0,0,0,0,0]
[null,null,{"$f":"SUM(C110:C111)","v":12819.00740983747},28587.547845579647,29173.099353910089,30323.127116435528,31373.207672877372,32331.322322947912]
["Number of Lights",null,{"$f":"'DNSP Inputs General'!J43","v":13118.000000000004},{"$f":"'DNSP Inputs General'!K43","v":13562.770412284883},{"$f":"'DNSP Inputs General'!L43","v":14022.620922118478},{"$f":"'DNSP Inputs General'!M43","v":14498.062825521833},{"$f":"'DNSP Inputs General'!N43","v":14989.624754187744},{"$f":"'DNSP Inputs General'!O43","v":15497.853263252824}]
["Unit Cost",null,{"$f":"IF(C113=0,0,C112/C113)","v":0.9772074561547085},2.1077956034473329,2.0804312914067382,2.0915295706303505,2.092994867273942,2.0861806970136412]
[]
["Location of selected public lighting assets within distributors' areas (%)"]
["Urban",null,0.48,0.77241112828438951,0.77241112828438951,0.77241112828438951,0.77241112828438951,0.77241112828438951]
["Rural",null,0.48099999999999998,0.20455950540958268,0.20455950540958268,0.20455950540958268,0.20455950540958268,0.20455950540958268]
["Remote",null,3.9E-2,2.302936630602782E-2,2.302936630602782E-2,2.302936630602782E-2,2.302936630602782E-2,2.302936630602782E-2]
[]
[]
[]
["Dedicated street lighting poles"]
[]
["Period of inspection","years",5,5,5,5,5,5]
["Pole inspection rate","per day",72,72,72,72,72,72]
["Depreciation of dedicated street lighting pole & bracket","years",35,{"$f":"C127","v":35},{"$f":"D127","v":35},{"$f":"E127","v":35},{"$f":"F127","v":35},{"$f":"G127","v":35}]
["Proportion of lights on dedicated poles",null,0.28800286795458091,0.504,0.504,0.504,0.504,0.504]
[]
[]
[]
["Other direct costs"]
["Call centre"]
["Number of calls",null,4000,6293.6174065682699,6399.6254244172496,6507.4190131267233,6617.0282483774045,6728.4837124367732]
["Average cost per call $",null,11.344254344988911,11.344254344988911,11.344254344988911,11.344254344988911,11.344254344988911,11.344254344988911]
[null,null,{"$f":"C134*C135","v":45377.017379955643},71396.396610159936,72598.978527246887,73821.816414326284,75065.251457569742,76329.630589997993]
[]
["GIS and other",null,113442.54344988911,113442.54344988911,113442.54344988911,113442.54344988911,113442.54344988911,113442.54344988911]
["Complaints handling",null,34032.763034966731,34032.763034966731,34032.763034966731,34032.763034966731,34032.763034966731,34032.763034966731]
["Accounts Manager"]
[]
[]
["ENERGY EFFICIENT LIGHTS"]
[]
["Inputs - T5 (2 X 14W)"]
[]
["Depreciation period","years",20,{"$f":"C147","v":20},{"$f":"D147","v":20},{"$f":"E147","v":20},{"$f":"F147","v":20},{"$f":"G147","v":20}]
["Lamps - bulk change","years",4,4,4,4,4,4]
["PE cells - bulk change","years",8,8,8,8,8,8]
["Ballast unit life","years",20,{"$f":"C150","v":20},{"$f":"D150","v":20},{"$f":"E150","v":20},{"$f":"F150","v":20},{"$f":"G150","v":20}]
["Proportion of luminaires that fail between bulk change",null,0.114,0.114,0.114,0.114,0.114,0.114]
["Unit cost - lamp",null,9.8705455220824962,9.9980392225172814,9.9980392225172814,9.9980392225172814,9.9980392225172814,9.9980392225172814]
["Unit cost - PE cell",null,16.656545568514215,16.871691187997911,16.871691187997911,16.871691187997911,16.871691187997911,16.871691187997911]
["Unit cost - luminaire",null,297.57227112698206,301.41588746083977,301.41588746083977,301.41588746083977,301.41588746083977,301.41588746083977]
["Unit cost - miscellaneous materials (bulk lamp)",null,1.233818190260312,1.2497549028146602,1.2497549028146602,1.2497549028146602,1.2497549028146602,1.2497549028146602]
["Unit cost - miscellaneous materials (repair)",null,12.338181902603122,12.497549028146603,12.497549028146603,12.497549028146603,12.497549028146603,12.497549028146603]
["Number of men in crew",null,2,2,2,2,2,2]
["Number of bulk lamp changes in 1 day - urban",null,73.92,73.92,73.92,73.92,73.92,73.92]
["Number of bulk lamp changes in 1 day - rural",null,61.44,61.44,61.44,61.44,61.44,61.44]
["Number of bulk lamp changes in 1 day - remote",null,48.96,48.96,48.96,48.96,48.96,48.96]
["Number of repairs in 1 day - urban",null,24.96,24.96,24.96,24.96,24.96,24.96]
["Number of repairs in 1 day - rural",null,20.16,20.16,20.16,20.16,20.16,20.16]
["Number of repairs in 1 day - remote",null,16.32,16.32,16.32,16.32,16.32,16.32]
["   % of repairs - lamps",null,0.6,0.6,0.6,0.6,0.6,0.6]
["   % of repairs - PE cells",null,0.5,0.5,0.5,0.5,0.5,0.5]
["   % of repairs - luminaires",null,0.15,0.15,0.15,0.15,0.15,0.15]
["   % of repairs - other",null,0.1,0.1,0.1,0.1,0.1,0.1]
[]
["Other Maintenance and Repair costs"]
["Traffic control costs",null,29660.493623659415,10320.555539673554,9939.047766898173,9771.8812251131531,9561.8902996358247,9318.7241336954776]
["Other costs : Describe…………………………………….",null,0,0,0,0,0,0]
[null,null,{"$f":"SUM(C170:C171)","v":29660.493623659415},10320.555539673554,9939.047766898173,9771.8812251131531,9561.8902996358247,9318.7241336954776]
["Number of Lights",null,{"$f":"'DNSP Inputs General'!J68","v":10664.999999999998},{"$f":"'DNSP Inputs General'!K68","v":10451.699999999999},{"$f":"'DNSP Inputs General'!L68","v":10242.665999999999},{"$f":"'DNSP Inputs General'!M68","v":10037.812679999999},{"$f":"'DNSP Inputs General'!N68","v":9837.0564263999986},{"$f":"'DNSP Inputs General'!O68","v":9640.3152978719991}]
["Unit Cost",null,{"$f":"IF(C173=0,0,C172/C173)","v":2.7811058250032272},0.98745233212525763,0.97035749939499871,0.97350703152523399,0.97202759495963631,0.96664101180928086]
[]
["Location of selected public lighting assets within distributors' areas (%)"]
["Urban",null,0.39,0.779800522901133,0.779800522901133,0.779800522901133,0.779800522901133,0.779800522901133]
["Rural",null,0.57099999999999995,0.21981214292630968,0.21981214292630968,0.21981214292630968,0.21981214292630968,0.21981214292630968]
["Remote",null,3.9E-2,3.8733417255737385E-4,3.8733417255737385E-4,3.8733417255737385E-4,3.8733417255737385E-4,3.8733417255737385E-4]
[]
[]
[]
[]
[]
["Inputs - Category P LED"]
[]
["Depreciation period","years",null,20,{"$f":"D187","v":20},{"$f":"E187","v":20},{"$f":"F187","v":20},{"$f":"G187","v":20}]
["PE cells - bulk change","years",null,8,8,8,8,8]
["Proportion of luminaires that fail between bulk change",null,null,0.114,0.114,0.114,0.114,0.114]
["Unit cost - PE cell",null,null,16.871691187997911,16.871691187997911,16.871691187997911,16.871691187997911,16.871691187997911]
["Unit cost - luminaire",null,null,352.72875158740868,352.72875158740868,352.72875158740868,352.72875158740868,352.72875158740868]
["Unit cost - miscellaneous materials (repair)",null,null,12.497549028146603,12.497549028146603,12.497549028146603,12.497549028146603,12.497549028146603]
["Number of men in crew",null,null,2,2,2,2,2]
["Number of bulk PE cells changes in 1 day - urban",null,null,73.92,73.92,73.92,73.92,73.92]
["Number of bulk PE cells changes in 1 day - rural",null,null,61.44,61.44,61.44,61.44,61.44]
["Number of bulk PE cells changes in 1 day - remote",null,null,48.96,48.96,48.96,48.96,48.96]
["Number of repairs in 1 day - urban",null,null,24.96,24.96,24.96,24.96,24.96]
["Number of repairs in 1 day - rural",null,null,20.16,20.16,20.16,20.16,20.16]
["Number of repairs in 1 day - remote",null,null,16.32,16.32,16.32,16.32,16.32]
["   % of repairs - PE cells",null,null,0.5,0.5,0.5,0.5,0.5]
["   % of repairs - luminaires",null,null,0.15,0.15,0.15,0.15,0.15]
["   % of repairs - other",null,null,0.1,0.1,0.1,0.1,0.1]
[]
["Other Maintenance and Repair costs"]
["Traffic control costs",null,null,2033.0058338246974,2004.6808862706953,3496.5314928497269,3469.8773282399338,3381.6357003032927]
["Other costs : Describe…………………………………….",null,null,0,0,0,0,0]
[null,null,{"$f":"SUM(C205:C206)","v":0},2033.0058338246974,2004.6808862706953,3496.5314928497269,3469.8773282399338,3381.6357003032927]
["Number of Lights",null,{"$f":"'DNSP Inputs General'!J72","v":26847},{"$f":"'DNSP Inputs General'!K72","v":37065.375199999995},{"$f":"'DNSP Inputs General'!L72","v":52924.438534000001},{"$f":"'DNSP Inputs General'!M72","v":57158.393616720008},{"$f":"'DNSP Inputs General'!N72","v":61731.065106057613},{"$f":"'DNSP Inputs General'!O72","v":66669.550314542226}]
["Unit Cost",null,{"$f":"IF(C208=0,0,C207/C208)","v":0},5.4849190730023901E-2,3.7878170119515532E-2,6.1172668992344095E-2,5.6209581387887605E-2,5.0722341523963703E-2]
[]
["Location of selected public lighting assets within distributors' areas (%)"]
["Urban",null,null,0.28489459897717351,0.28489459897717351,0.28489459897717351,0.28489459897717351,0.28489459897717351]
["Rural",null,null,0.63727079955095423,0.63727079955095423,0.63727079955095423,0.63727079955095423,0.63727079955095423]
["Remote",null,null,7.7834601471872267E-2,7.7834601471872267E-2,7.7834601471872267E-2,7.7834601471872267E-2,7.7834601471872267E-2]

{"sheet":"DNSP Inputs Capex","index":3,"n_rows":135,"n_cols":8,"rows_kept":135,"cut":false,"hidden":false,"merged":[[4,2,4,7],[2,2,2,7]]}
["Public Lighting Cost Build-up Model"]
[]
[{"$f":"'DNSP Inputs O & M'!$A$3","v":"Powercor"},null,"Capex Data Inputs"]
[]
[null,null,"Real 2015 $ "]
[]
["Input parameters",null,2015,2016,2017,2018,2019,2020]
[]
["Inputs - all lamps"]
[]
["Material premium for rural areas",null,{"$f":"'DNSP Inputs O & M'!C11","v":0.05},{"$f":"'DNSP Inputs O & M'!D11","v":0.05},{"$f":"'DNSP Inputs O & M'!E11","v":0.05},{"$f":"'DNSP Inputs O & M'!F11","v":0.05},{"$f":"'DNSP Inputs O & M'!G11","v":0.05},{"$f":"'DNSP Inputs O & M'!H11","v":0.05}]
["Labour rate (per hour)",null,{"$f":"'DNSP Inputs O & M'!C12","v":98.073152427599211},{"$f":"'DNSP Inputs O & M'!D12","v":100},{"$f":"'DNSP Inputs O & M'!E12","v":100.37},{"$f":"'DNSP Inputs O & M'!F12","v":101.16292300000001},{"$f":"'DNSP Inputs O & M'!G12","v":102.13408706080001},{"$f":"'DNSP Inputs O & M'!H12","v":103.17585474882017}]
["Elevated platform vehicle (per hour) - urban MV,urban T5",null,{"$f":"'DNSP Inputs O & M'!C14","v":39.70489020746119},{"$f":"'DNSP Inputs O & M'!D14","v":45.38},{"$f":"'DNSP Inputs O & M'!E14","v":45.38},{"$f":"'DNSP Inputs O & M'!F14","v":45.38},{"$f":"'DNSP Inputs O & M'!G14","v":45.38},{"$f":"'DNSP Inputs O & M'!H14","v":45.38}]
["Elevated platform vehicle (per hour) - rural MV, rural T5, S-HP",null,{"$f":"'DNSP Inputs O & M'!C15","v":51.049144552450102},{"$f":"'DNSP Inputs O & M'!D15","v":57.553455530448915},{"$f":"'DNSP Inputs O & M'!E15","v":58.793154718775355},{"$f":"'DNSP Inputs O & M'!F15","v":59.813152919549431},{"$f":"'DNSP Inputs O & M'!G15","v":60.839187511541702},{"$f":"'DNSP Inputs O & M'!H15","v":61.900611933039357}]
["Number of hours in a day",null,{"$f":"'DNSP Inputs O & M'!C17","v":8},{"$f":"'DNSP Inputs O & M'!D17","v":8},{"$f":"'DNSP Inputs O & M'!E17","v":8},{"$f":"'DNSP Inputs O & M'!F17","v":8},{"$f":"'DNSP Inputs O & M'!G17","v":8},{"$f":"'DNSP Inputs O & M'!H17","v":8}]
[]
[]
[]
["Inputs - MV80"]
[]
["Unit cost - luminaire",null,{"$f":"'DNSP Inputs O & M'!C30","v":195.62187406577252},{"$f":"'DNSP Inputs O & M'!D30","v":198.14863984126438},{"$f":"'DNSP Inputs O & M'!E30","v":198.14863984126438},{"$f":"'DNSP Inputs O & M'!F30","v":198.14863984126438},{"$f":"'DNSP Inputs O & M'!G30","v":198.14863984126438},{"$f":"'DNSP Inputs O & M'!H30","v":198.14863984126438}]
["Unit cost - miscellaneous materials (bulk lamp)",null,{"$f":"'DNSP Inputs O & M'!C31","v":1.233818190260312},{"$f":"'DNSP Inputs O & M'!D31","v":1.2497549028146602},{"$f":"'DNSP Inputs O & M'!E31","v":1.2497549028146602},{"$f":"'DNSP Inputs O & M'!F31","v":1.2497549028146602},{"$f":"'DNSP Inputs O & M'!G31","v":1.2497549028146602},{"$f":"'DNSP Inputs O & M'!H31","v":1.2497549028146602}]
["Number of men in crew",null,{"$f":"'DNSP Inputs O & M'!C33","v":2},{"$f":"'DNSP Inputs O & M'!D33","v":2},{"$f":"'DNSP Inputs O & M'!E33","v":2},{"$f":"'DNSP Inputs O & M'!F33","v":2},{"$f":"'DNSP Inputs O & M'!G33","v":2},{"$f":"'DNSP Inputs O & M'!H33","v":2}]
["Number of luminaires replaced per day - urban",null,15.36,15.36,15.36,15.36,15.36,15.36]
["Number of luminaires replaced per day - rural",null,12.48,12.48,12.48,12.48,12.48,12.48]
["Number of luminaires replaced per day - remote",null,9.6,9.6,9.6,9.6,9.6,9.6]
[]
["Other Capex unit costs Describe :………………………",null,0,0,0,0,0,0]
[]
["Forecast Quantities to be replaced"]
["Number of luminaires replaced per year - urban",null,null,100.63440873431328,78.715474545234187,71.392016050106818,64.269320197396652,57.438710010429382]
["Number of luminaires replaced per year - rural",null,null,25.170232142387331,19.687965502262315,17.856254532566496,16.074757424895751,14.366315488956802]
["Number of luminaires replaced per year - remote",null,null,7.7147894499501142,6.0344500475246257,5.4730223902655668,4.9269855077439368,4.4033403642000186]
[]
["MV80 Lights replaced with T5 Energy Efficient Lights"]
["Number of Lights MV80 replaced with T5 per year",null,null,10218.093200000003,11047.750740000003,4889.415605999995,4400.4740453999984,3960.4266408600015]
[]
[]
[]
["Inputs - S-HP150"]
[]
["Unit cost - luminaire",null,231.51364522044497,234.50400996414282,234.50400996414282,234.50400996414282,234.50400996414282,234.50400996414282]
["Unit cost - miscellaneous materials",null,{"$f":"'DNSP Inputs O & M'!C67","v":2.4676363805206241},{"$f":"'DNSP Inputs O & M'!D67","v":2.4995098056293203},{"$f":"'DNSP Inputs O & M'!E67","v":2.4995098056293203},{"$f":"'DNSP Inputs O & M'!F67","v":2.4995098056293203},{"$f":"'DNSP Inputs O & M'!G67","v":2.4995098056293203},{"$f":"'DNSP Inputs O & M'!H67","v":2.4995098056293203}]
["Number of men in crew",null,{"$f":"'DNSP Inputs O & M'!C69","v":2},{"$f":"'DNSP Inputs O & M'!D69","v":2},{"$f":"'DNSP Inputs O & M'!E69","v":2},{"$f":"'DNSP Inputs O & M'!F69","v":2},{"$f":"'DNSP Inputs O & M'!G69","v":2},{"$f":"'DNSP Inputs O & M'!H69","v":2}]
["Number of luminaires replaced per day - urban",null,15.36,15.36,15.36,15.36,15.36,15.36]
["Number of luminaires replaced per day - rural",null,12.48,12.48,12.48,12.48,12.48,12.48]
["Number of luminaires replaced per day - remote",null,9.6,9.6,9.6,9.6,9.6,9.6]
[]
["Other Capex unit costs Describe :………………………",null,0,0,0,0,0,0]
[]
["Forecast Quantities to be replaced"]
["Number of luminaires replaced per year - urban",null,null,792.54257852620617,795.11859290278471,797.68464065943488,800.24064305489208,802.78652303368165]
["Number of luminaires replaced per year - rural",null,null,186.90913602504438,187.51664991080901,188.1218133205609,188.72460768436815,189.32501482986675]
["Number of luminaires replaced per day - remote",null,null,30.227306465946675,30.325554784877777,30.423422980288496,30.520908049013578,30.61800705218322]
[]
[]
[]
["Inputs - S-HP250"]
[]
["Unit cost - luminaire",null,234.96833615317382,238.00332369202388,238.00332369202388,238.00332369202388,238.00332369202388,238.00332369202388]
["Unit cost - miscellaneous materials",null,{"$f":"'DNSP Inputs O & M'!C99","v":2.4676363805206241},{"$f":"'DNSP Inputs O & M'!D99","v":2.4995098056293203},{"$f":"'DNSP Inputs O & M'!E99","v":2.4995098056293203},{"$f":"'DNSP Inputs O & M'!F99","v":2.4995098056293203},{"$f":"'DNSP Inputs O & M'!G99","v":2.4995098056293203},{"$f":"'DNSP Inputs O & M'!H99","v":2.4995098056293203}]
["Number of men in crew",null,{"$f":"'DNSP Inputs O & M'!C101","v":2},{"$f":"'DNSP Inputs O & M'!D101","v":2},{"$f":"'DNSP Inputs O & M'!E101","v":2},{"$f":"'DNSP Inputs O & M'!F101","v":2},{"$f":"'DNSP Inputs O & M'!G101","v":2},{"$f":"'DNSP Inputs O & M'!H101","v":2}]
["Number of luminaires replaced per day - urban",null,15.36,15.36,15.36,15.36,15.36,15.36]
["Number of luminaires replaced per day - rural",null,12.48,12.48,12.48,12.48,12.48,12.48]
["Number of luminaires replaced per day - remote",null,9.6,9.6,9.6,9.6,9.6,9.6]
[]
["Other Capex unit costs Describe :………………………",null,0,0,0,0,0,0]
[]
["Forecast Quantities to be replaced"]
["Number of luminaires replaced per year - urban",null,null,358.36646809299202,370.5170094684147,383.07951923056049,396.0679653127429,409.49678923597679]
["Number of luminaires replaced per year - rural",null,null,94.907057633031485,98.12491486372123,101.45187467766819,104.89163623640124,108.44802412282446]
["Number of luminaires replaced per day - remote",null,null,10.684663080711516,11.046930347332424,11.42148041327734,11.808729731185331,12.209108873668942]
[]
[]
[]
["Dedicated street lighting poles"]
[]
["Cost of pole & bracket",null,1577.8709316090333,1598.2516292542912,1598.2516292542912,1598.2516292542912,1598.2516292542912,1598.2516292542912]
["Number of poles & brackets replaced per day",null,3.84,3.84,3.84,3.84,3.84,3.84]
["Cost of bracket on non-dedicated poles",null,47.8548747910055,48.472996155959329,48.472996155959329,48.472996155959329,48.472996155959329,48.472996155959329]
["Number of brackets replaced per day",null,19.2,19.2,19.2,19.2,19.2,19.2]
[]
["Other poles & brackets Capex unit costs Describe :…………………",null,0,0,0,0,0,0]
[]
[]
["Forecast Quantities to be replaced"]
["Number of poles & brackets replaced per year - urban",null,null,101.14448514448515,101.14448514448515,101.14448514448515,101.14448514448515,101.14448514448515]
["Number of poles & brackets replaced per year - rural",null,null,240.39723239723239,240.39723239723239,240.39723239723239,240.39723239723239,240.39723239723239]
["Number of poles & brackets replaced per year - remote",null,null,10.458282458282458,10.458282458282458,10.458282458282458,10.458282458282458,10.458282458282458]
[]
["Brackets on non-dedicated poles :"]
["Number of brackets replaced per year - urban",null,null,20,20,20,20,20]
["Number of brackets replaced per year - rural",null,null,30,30,30,30,30]
["Number of brackets replaced per year - remote",null,null,2,2,2,2,2]
[]
[]
[]
["Luminaire Replacements - Other Light types (excluding T5s)"]
["Number of luminaires replaced per year",null,null,1713,1713,1713,1713,1713]
["Forecast Capex",null,null,1436304,1436304,1436304,1436304,1436304]
[]
[]
[]
["Inputs - T5 (2 X 14W)"]
[]
["Unit cost - luminaire",null,{"$f":"'DNSP Inputs O & M'!C154","v":297.57227112698206},{"$f":"'DNSP Inputs O & M'!D154","v":301.41588746083977},{"$f":"'DNSP Inputs O & M'!E154","v":301.41588746083977},{"$f":"'DNSP Inputs O & M'!F154","v":301.41588746083977},{"$f":"'DNSP Inputs O & M'!G154","v":301.41588746083977},{"$f":"'DNSP Inputs O & M'!H154","v":301.41588746083977}]
["Unit cost - miscellaneous materials (bulk lamp)",null,{"$f":"'DNSP Inputs O & M'!C155","v":1.233818190260312},{"$f":"'DNSP Inputs O & M'!D155","v":1.2497549028146602},{"$f":"'DNSP Inputs O & M'!E155","v":1.2497549028146602},{"$f":"'DNSP Inputs O & M'!F155","v":1.2497549028146602},{"$f":"'DNSP Inputs O & M'!G155","v":1.2497549028146602},{"$f":"'DNSP Inputs O & M'!H155","v":1.2497549028146602}]
["Number of men in crew",null,{"$f":"'DNSP Inputs O & M'!C157","v":2},{"$f":"'DNSP Inputs O & M'!D157","v":2},{"$f":"'DNSP Inputs O & M'!E157","v":2},{"$f":"'DNSP Inputs O & M'!F157","v":2},{"$f":"'DNSP Inputs O & M'!G157","v":2},{"$f":"'DNSP Inputs O & M'!H157","v":2}]
["Number of luminaires replaced per day - urban",null,null,15.36,15.36,15.36,15.36,15.36]
["Number of luminaires replaced per day - rural",null,null,12.48,12.48,12.48,12.48,12.48]
["Number of luminaires replaced per day - remote",null,null,9.6,9.6,9.6,9.6,9.6]
[]
["Other Capex unit costs Describe :………………………",null,null,0,0,0,0,0]
[]
["Forecast Quantities to be replaced"]
["Number of luminaires replaced per year - urban",null,null,18.154503421007547,17.060732291214411,16.848869354198303,16.516133667671351,16.072851299479424]
["Number of luminaires replaced per year - rural",null,null,5.117437323443081,4.8091223520497586,4.7494018917211163,4.6556095151637855,4.530655960489046]
["Number of luminaires replaced per year - remote",null,null,9.0175107021023444E-3,8.4742244088982528E-3,8.3689901175702484E-3,8.2037172073370669E-3,7.9835347321392872E-3]
[]
[]
[]
["Inputs - Category P LED"]
[]
["Unit cost - luminaire",null,null,{"$f":"'DNSP Inputs O & M'!D191","v":352.72875158740868},{"$f":"'DNSP Inputs O & M'!E191","v":352.72875158740868},{"$f":"'DNSP Inputs O & M'!F191","v":352.72875158740868},{"$f":"'DNSP Inputs O & M'!G191","v":352.72875158740868},{"$f":"'DNSP Inputs O & M'!H191","v":352.72875158740868}]
["Number of men in crew",null,null,{"$f":"'DNSP Inputs O & M'!D193","v":2},{"$f":"'DNSP Inputs O & M'!E193","v":2},{"$f":"'DNSP Inputs O & M'!F193","v":2},{"$f":"'DNSP Inputs O & M'!G193","v":2},{"$f":"'DNSP Inputs O & M'!H193","v":2}]
["Number of luminaires replaced per day - urban",null,null,15.36,15.36,15.36,15.36,15.36]
["Number of luminaires replaced per day - rural",null,null,12.48,12.48,12.48,12.48,12.48]
["Number of luminaires replaced per day - remote",null,null,9.6,9.6,9.6,9.6,9.6]
[]
["Other Capex unit costs Describe :………………………",null,null,0,0,0,0,0]
[]
["Forecast Quantities to be replaced"]
["Number of luminaires replaced per year - urban",null,null,23.521582292790303,32.206357571578572,35.05196623585357,37.86584830403379,40.609711881578129]
["Number of luminaires replaced per year - rural",null,null,52.614607676823844,72.041278823640511,78.406521672056002,84.700796403375065,90.83844921321483]
["Number of luminaires replaced per year - remote",null,null,6.4262116246502403,8.7989348181545655,9.5763690591824115,10.34513543858016,11.09477242298807]

{"sheet":"PL Tariffs","index":4,"n_rows":36,"n_cols":20,"rows_kept":36,"cut":false,"hidden":false,"merged":[[2,2,2,7],[2,9,2,13],[2,15,2,19]]}
[{"$f":"'DNSP Inputs O & M'!$A$3","v":"Powercor"},null,null,null,"Global Check",{"$f":"IF(SUM('Total RAB'!F1,'Depn & WACC Post 2004'!F1,'Cashflow Summary'!F1,'PL Tariff Components'!W1)<1,\"Ok\",\"Error\")","v":"Ok"}]
[]
["Public Lighting Tariffs",null,"Nominal Prices",null,null,null,null,null,null,"Nominal Price Movement",null,null,null,null,null,"Real Price Movement (Implied X Factor)"]
[null,null,"Actual"]
[{"$f":"'DNSP Inputs General'!A$40","v":"Existing Lights"},null,{"$f":"'DNSP Inputs General'!J$2","v":2015},{"$f":"'DNSP Inputs General'!K$2","v":2016},{"$f":"'DNSP Inputs General'!L$2","v":2017},{"$f":"'DNSP Inputs General'!M$2","v":2018},{"$f":"'DNSP Inputs General'!N$2","v":2019},{"$f":"'DNSP Inputs General'!O$2","v":2020},null,{"$f":"D5","v":2016},{"$f":"E5","v":2017},2018,2019,2020,null,{"$f":"J5","v":2016},{"$f":"K5","v":2017},2018,2019,2020]
[{"$f":"'DNSP Inputs General'!A41","v":"Mercury vapour 80 watt"},null,{"$f":"'DNSP Inputs General'!E41","v":53.01},{"$f":"'Charges Summary'!D$31","v":48.085239073533799},{"$f":"'Charges Summary'!E$31","v":47.891837395949075},{"$f":"'Charges Summary'!F$31","v":52.131209989737499},{"$f":"'Charges Summary'!G$31","v":55.776302330281624},{"$f":"'Charges Summary'!H$31","v":58.583359962220726},null,{"$f":"IF(C6=0,\"\",D6/C6-1)","v":-9.2902488709039832E-2},{"$f":"IF(D6=0,\"\",E6/D6-1)","v":-4.0220591872064393E-3},{"$f":"IF(E6=0,\"\",F6/E6-1)","v":8.8519731634832066E-2},{"$f":"IF(F6=0,\"\",G6/F6-1)","v":6.9921498872972609E-2},{"$f":"IF(G6=0,\"\",H6/G6-1)","v":5.0327065701075036E-2},null,{"$f":"IF(C6=0,\"\",(D6/'Charges Summary'!D$4)/C6-1)","v":-0.11349666871065944},{"$f":"IF(D6=0,\"\",(E6/'Charges Summary'!E$4)/(D6/'Charges Summary'!D$4)-1)","v":-1.4110233541663741E-2},{"$f":"IF(E6=0,\"\",(F6/'Charges Summary'!F$4)/(E6/'Charges Summary'!E$4)-1)","v":6.7870305831461364E-2},{"$f":"IF(F6=0,\"\",(G6/'Charges Summary'!G$4)/(F6/'Charges Summary'!F$4)-1)","v":4.5630663917385128E-2},{"$f":"IF(G6=0,\"\",(H6/'Charges Summary'!H$4)/(G6/'Charges Summary'!G$4)-1)","v":2.6481090618597936E-2}]
[{"$f":"'DNSP Inputs General'!A42","v":"Sodium high pressure 150 watt"},null,{"$f":"'DNSP Inputs General'!E42","v":87.39},{"$f":"'Charges Summary'!D$55","v":90.641649531164418},{"$f":"'Charges Summary'!E$55","v":91.016352237710066},{"$f":"'Charges Summary'!F$55","v":96.426110206899793},{"$f":"'Charges Summary'!G$55","v":101.46789722419287},{"$f":"'Charges Summary'!H$55","v":105.70799736837206},null,3.7208485309124795E-2,4.133891080797536E-3,5.943720920676876E-2,5.2286533247841271E-2,4.1787602386306633E-2,null,{"$f":"IF(C7=0,\"\",(D7/'Charges Summary'!D$4)/C7-1)","v":1.3660346349660735E-2},{"$f":"IF(D7=0,\"\",(E7/'Charges Summary'!E$4)/(D7/'Charges Summary'!D$4)-1)","v":-6.0368941879764826E-3},{"$f":"IF(E7=0,\"\",(F7/'Charges Summary'!F$4)/(E7/'Charges Summary'!E$4)-1)","v":3.9339484370867872E-2},{"$f":"IF(F7=0,\"\",(G7/'Charges Summary'!G$4)/(F7/'Charges Summary'!F$4)-1)","v":2.8396071627960096E-2},{"$f":"IF(G7=0,\"\",(H7/'Charges Summary'!H$4)/(G7/'Charges Summary'!G$4)-1)","v":1.813550198922198E-2}]
[{"$f":"'DNSP Inputs General'!A43","v":"Sodium high pressure 250 watt"},null,{"$f":"'DNSP Inputs General'!E43","v":90.27},{"$f":"'Charges Summary'!D$71","v":91.826811552491293},{"$f":"'Charges Summary'!E$71","v":92.283958563318507},{"$f":"'Charges Summary'!F$71","v":97.920816527455969},{"$f":"'Charges Summary'!G$71","v":103.17547513618686},{"$f":"'Charges Summary'!H$71","v":107.58944297465706},null,1.7246167635884602E-2,4.9783609285605213E-3,6.1081666325246031E-2,5.366232426439721E-2,4.2781172877023099E-2,null,{"$f":"IF(C8=0,\"\",(D8/'Charges Summary'!D$4)/C8-1)","v":-5.8487592286337042E-3},{"$f":"IF(D8=0,\"\",(E8/'Charges Summary'!E$4)/(D8/'Charges Summary'!D$4)-1)","v":-5.2009779022075264E-3},{"$f":"IF(E8=0,\"\",(F8/'Charges Summary'!F$4)/(E8/'Charges Summary'!E$4)-1)","v":4.0952745825851178E-2},{"$f":"IF(F8=0,\"\",(G8/'Charges Summary'!G$4)/(F8/'Charges Summary'!F$4)-1)","v":2.974062753749962E-2},{"$f":"IF(G8=0,\"\",(H8/'Charges Summary'!H$4)/(G8/'Charges Summary'!G$4)-1)","v":1.9106515070976826E-2}]
[{"$f":"'DNSP Inputs General'!A44","v":"Fluorescent 20 watt"},null,{"$f":"'DNSP Inputs General'!E44","v":147.38},{"$f":"IF('DNSP Inputs General'!$B44='DNSP Inputs General'!$A$41,D$6,IF('DNSP Inputs General'!$B44='DNSP Inputs General'!$A$42,D$7,D$8))*'DNSP Inputs General'!$D44","v":101.94070683589166},{"$f":"IF('DNSP Inputs General'!$B44='DNSP Inputs General'!$A$41,E$6,IF('DNSP Inputs General'!$B44='DNSP Inputs General'!$A$42,E$7,E$8))*'DNSP Inputs General'!$D44","v":101.53069527941204},{"$f":"IF('DNSP Inputs General'!$B44='DNSP Inputs General'!$A$41,F$6,IF('DNSP Inputs General'!$B44='DNSP Inputs General'!$A$42,F$7,F$8))*'DNSP Inputs General'!$D44","v":110.51816517824351},{"$f":"IF('DNSP Inputs General'!$B44='DNSP Inputs General'!$A$41,G$6,IF('DNSP Inputs General'!$B44='DNSP Inputs General'!$A$42,G$7,G$8))*'DNSP Inputs General'!$D44","v":118.24576094019704},{"$f":"IF('DNSP Inputs General'!$B44='DNSP Inputs General'!$A$41,H$6,IF('DNSP Inputs General'!$B44='DNSP Inputs General'!$A$42,H$7,H$8))*'DNSP Inputs General'!$D44","v":124.19672311990794},null,-0.30831383609789886,-4.0220591872064393E-3,8.8519731634832066E-2,6.9921498872972387E-2,5.0327065701075036E-2,null,{"$f":"IF(C9=0,\"\",(D9/'Charges Summary'!D$4)/C9-1)","v":-0.32401745030334073},{"$f":"IF(D9=0,\"\",(E9/'Charges Summary'!E$4)/(D9/'Charges Summary'!D$4)-1)","v":-1.4110233541663741E-2},{"$f":"IF(E9=0,\"\",(F9/'Charges Summary'!F$4)/(E9/'Charges Summary'!E$4)-1)","v":6.7870305831461364E-2},{"$f":"IF(F9=0,\"\",(G9/'Charges Summary'!G$4)/(F9/'Charges Summary'!F$4)-1)","v":4.5630663917385128E-2},{"$f":"IF(G9=0,\"\",(H9/'Charges Summary'!H$4)/(G9/'Charges Summary'!G$4)-1)","v":2.6481090618598158E-2}]
[{"$f":"'DNSP Inputs General'!A45","v":"Fluorescent 40 watt"},null,{"$f":"'DNSP Inputs General'!E45","v":147.38},{"$f":"IF('DNSP Inputs General'!$B45='DNSP Inputs General'!$A$41,D$6,IF('DNSP Inputs General'!$B45='DNSP Inputs General'!$A$42,D$7,D$8))*'DNSP Inputs General'!$D45","v":101.94070683589166},{"$f":"IF('DNSP Inputs General'!$B45='DNSP Inputs General'!$A$41,E$6,IF('DNSP Inputs General'!$B45='DNSP Inputs General'!$A$42,E$7,E$8))*'DNSP Inputs General'!$D45","v":101.53069527941204},{"$f":"IF('DNSP Inputs General'!$B45='DNSP Inputs General'!$A$41,F$6,IF('DNSP Inputs General'!$B45='DNSP Inputs General'!$A$42,F$7,F$8))*'DNSP Inputs General'!$D45","v":110.51816517824351},{"$f":"IF('DNSP Inputs General'!$B45='DNSP Inputs General'!$A$41,G$6,IF('DNSP Inputs General'!$B45='DNSP Inputs General'!$A$42,G$7,G$8))*'DNSP Inputs General'!$D45","v":118.24576094019704},{"$f":"IF('DNSP Inputs General'!$B45='DNSP Inputs General'!$A$41,H$6,IF('DNSP Inputs General'!$B45='DNSP Inputs General'!$A$42,H$7,H$8))*'DNSP Inputs General'!$D45","v":124.19672311990794},null,-0.30831383609789886,-4.0220591872064393E-3,8.8519731634832066E-2,6.9921498872972387E-2,5.0327065701075036E-2,null,{"$f":"IF(C10=0,\"\",(D10/'Charges Summary'!D$4)/C10-1)","v":-0.32401745030334073},{"$f":"IF(D10=0,\"\",(E10/'Charges Summary'!E$4)/(D10/'Charges Summary'!D$4)-1)","v":-1.4110233541663741E-2},{"$f":"IF(E10=0,\"\",(F10/'Charges Summary'!F$4)/(E10/'Charges Summary'!E$4)-1)","v":6.7870305831461364E-2},{"$f":"IF(F10=0,\"\",(G10/'Charges Summary'!G$4)/(F10/'Charges Summary'!F$4)-1)","v":4.5630663917385128E-2},{"$f":"IF(G10=0,\"\",(H10/'Charges Summary'!H$4)/(G10/'Charges Summary'!G$4)-1)","v":2.6481090618598158E-2}]
[{"$f":"'DNSP Inputs General'!A46","v":"Mercury vapour 50 watt"},null,{"$f":"'DNSP Inputs General'!E46","v":73.69},{"$f":"IF('DNSP Inputs General'!$B46='DNSP Inputs General'!$A$41,D$6,IF('DNSP Inputs General'!$B46='DNSP Inputs General'!$A$42,D$7,D$8))*'DNSP Inputs General'!$D46","v":66.83848231221198},{"$f":"IF('DNSP Inputs General'!$B46='DNSP Inputs General'!$A$41,E$6,IF('DNSP Inputs General'!$B46='DNSP Inputs General'!$A$42,E$7,E$8))*'DNSP Inputs General'!$D46","v":66.56965398036921},{"$f":"IF('DNSP Inputs General'!$B46='DNSP Inputs General'!$A$41,F$6,IF('DNSP Inputs General'!$B46='DNSP Inputs General'!$A$42,F$7,F$8))*'DNSP Inputs General'!$D46","v":72.462381885735113},{"$f":"IF('DNSP Inputs General'!$B46='DNSP Inputs General'!$A$41,G$6,IF('DNSP Inputs General'!$B46='DNSP Inputs General'!$A$42,G$7,G$8))*'DNSP Inputs General'!$D46","v":77.52906023909145},{"$f":"IF('DNSP Inputs General'!$B46='DNSP Inputs General'!$A$41,H$6,IF('DNSP Inputs General'!$B46='DNSP Inputs General'!$A$42,H$7,H$8))*'DNSP Inputs General'!$D46","v":81.430870347486803},null,-9.2977577524603339E-2,-4.0220591872064393E-3,8.8519731634831844E-2,6.9921498872972609E-2,5.0327065701075036E-2,null,{"$f":"IF(C11=0,\"\",(D11/'Charges Summary'!D$4)/C11-1)","v":-0.11357005275626764},{"$f":"IF(D11=0,\"\",(E11/'Charges Summary'!E$4)/(D11/'Charges Summary'!D$4)-1)","v":-1.4110233541663852E-2},{"$f":"IF(E11=0,\"\",(F11/'Charges Summary'!F$4)/(E11/'Charges Summary'!E$4)-1)","v":6.7870305831461142E-2},{"$f":"IF(F11=0,\"\",(G11/'Charges Summary'!G$4)/(F11/'Charges Summary'!F$4)-1)","v":4.5630663917385128E-2},{"$f":"IF(G11=0,\"\",(H11/'Charges Summary'!H$4)/(G11/'Charges Summary'!G$4)-1)","v":2.6481090618598158E-2}]
[{"$f":"'DNSP Inputs General'!A47","v":"Mercury vapour 125 watt"},null,{"$f":"'DNSP Inputs General'!E47","v":71.569999999999993},{"$f":"IF('DNSP Inputs General'!$B47='DNSP Inputs General'!$A$41,D$6,IF('DNSP Inputs General'!$B47='DNSP Inputs General'!$A$42,D$7,D$8))*'DNSP Inputs General'!$D47","v":64.915072749270635},{"$f":"IF('DNSP Inputs General'!$B47='DNSP Inputs General'!$A$41,E$6,IF('DNSP Inputs General'!$B47='DNSP Inputs General'!$A$42,E$7,E$8))*'DNSP Inputs General'!$D47","v":64.65398048453126},{"$f":"IF('DNSP Inputs General'!$B47='DNSP Inputs General'!$A$41,F$6,IF('DNSP Inputs General'!$B47='DNSP Inputs General'!$A$42,F$7,F$8))*'DNSP Inputs General'!$D47","v":70.377133486145624},{"$f":"IF('DNSP Inputs General'!$B47='DNSP Inputs General'!$A$41,G$6,IF('DNSP Inputs General'!$B47='DNSP Inputs General'!$A$42,G$7,G$8))*'DNSP Inputs General'!$D47","v":75.298008145880203},{"$f":"IF('DNSP Inputs General'!$B47='DNSP Inputs General'!$A$41,H$6,IF('DNSP Inputs General'!$B47='DNSP Inputs General'!$A$42,H$7,H$8))*'DNSP Inputs General'!$D47","v":79.087535948997981},null,-9.2984871464710905E-2,-4.0220591872064393E-3,8.8519731634831844E-2,6.9921498872972609E-2,5.0327065701074813E-2,null,{"$f":"IF(C12=0,\"\",(D12/'Charges Summary'!D$4)/C12-1)","v":-0.11357718109927717},{"$f":"IF(D12=0,\"\",(E12/'Charges Summary'!E$4)/(D12/'Charges Summary'!D$4)-1)","v":-1.4110233541663741E-2},{"$f":"IF(E12=0,\"\",(F12/'Charges Summary'!F$4)/(E12/'Charges Summary'!E$4)-1)","v":6.7870305831461142E-2},{"$f":"IF(F12=0,\"\",(G12/'Charges Summary'!G$4)/(F12/'Charges Summary'!F$4)-1)","v":4.563066391738535E-2},{"$f":"IF(G12=0,\"\",(H12/'Charges Summary'!H$4)/(G12/'Charges Summary'!G$4)-1)","v":2.6481090618597936E-2}]
[{"$f":"'DNSP Inputs General'!A48","v":"Mercury vapour 250 watt"},null,{"$f":"'DNSP Inputs General'!E48","v":68.599999999999994},{"$f":"IF('DNSP Inputs General'!$B48='DNSP Inputs General'!$A$41,D$6,IF('DNSP Inputs General'!$B48='DNSP Inputs General'!$A$42,D$7,D$8))*'DNSP Inputs General'!$D48","v":69.788376779893383},{"$f":"IF('DNSP Inputs General'!$B48='DNSP Inputs General'!$A$41,E$6,IF('DNSP Inputs General'!$B48='DNSP Inputs General'!$A$42,E$7,E$8))*'DNSP Inputs General'!$D48","v":70.135808508122068},{"$f":"IF('DNSP Inputs General'!$B48='DNSP Inputs General'!$A$41,F$6,IF('DNSP Inputs General'!$B48='DNSP Inputs General'!$A$42,F$7,F$8))*'DNSP Inputs General'!$D48","v":74.41982056086654},{"$f":"IF('DNSP Inputs General'!$B48='DNSP Inputs General'!$A$41,G$6,IF('DNSP Inputs General'!$B48='DNSP Inputs General'!$A$42,G$7,G$8))*'DNSP Inputs General'!$D48","v":78.413361103502012},{"$f":"IF('DNSP Inputs General'!$B48='DNSP Inputs General'!$A$41,H$6,IF('DNSP Inputs General'!$B48='DNSP Inputs General'!$A$42,H$7,H$8))*'DNSP Inputs General'!$D48","v":81.767976660739365},null,1.7323276674830801E-2,4.9783609285605213E-3,6.1081666325246253E-2,5.366232426439721E-2,4.2781172877023099E-2,null,{"$f":"IF(C13=0,\"\",(D13/'Charges Summary'!D$4)/C13-1)","v":-5.773400825543118E-3},{"$f":"IF(D13=0,\"\",(E13/'Charges Summary'!E$4)/(D13/'Charges Summary'!D$4)-1)","v":-5.2009779022074154E-3},{"$f":"IF(E13=0,\"\",(F13/'Charges Summary'!F$4)/(E13/'Charges Summary'!E$4)-1)","v":4.09527458258514E-2},{"$f":"IF(F13=0,\"\",(G13/'Charges Summary'!G$4)/(F13/'Charges Summary'!F$4)-1)","v":2.9740627537499398E-2},{"$f":"IF(G13=0,\"\",(H13/'Charges Summary'!H$4)/(G13/'Charges Summary'!G$4)-1)","v":1.9106515070976826E-2}]
[{"$f":"'DNSP Inputs General'!A49","v":"Mercury vapour 400 watt"},null,{"$f":"'DNSP Inputs General'!E49","v":79.44},{"$f":"IF('DNSP Inputs General'!$B49='DNSP Inputs General'!$A$41,D$6,IF('DNSP Inputs General'!$B49='DNSP Inputs General'!$A$42,D$7,D$8))*'DNSP Inputs General'!$D49","v":80.807594166192345},{"$f":"IF('DNSP Inputs General'!$B49='DNSP Inputs General'!$A$41,E$6,IF('DNSP Inputs General'!$B49='DNSP Inputs General'!$A$42,E$7,E$8))*'DNSP Inputs General'!$D49","v":81.20988353572028},{"$f":"IF('DNSP Inputs General'!$B49='DNSP Inputs General'!$A$41,F$6,IF('DNSP Inputs General'!$B49='DNSP Inputs General'!$A$42,F$7,F$8))*'DNSP Inputs General'!$D49","v":86.170318544161248},{"$f":"IF('DNSP Inputs General'!$B49='DNSP Inputs General'!$A$41,G$6,IF('DNSP Inputs General'!$B49='DNSP Inputs General'!$A$42,G$7,G$8))*'DNSP Inputs General'!$D49","v":90.794418119844437},{"$f":"IF('DNSP Inputs General'!$B49='DNSP Inputs General'!$A$41,H$6,IF('DNSP Inputs General'!$B49='DNSP Inputs General'!$A$42,H$7,H$8))*'DNSP Inputs General'!$D49","v":94.67870981769822},null,1.7215435123267175E-2,4.9783609285602992E-3,6.1081666325246253E-2,5.366232426439721E-2,4.2781172877023099E-2,null,{"$f":"IF(C14=0,\"\",(D14/'Charges Summary'!D$4)/C14-1)","v":-5.878794009321564E-3},{"$f":"IF(D14=0,\"\",(E14/'Charges Summary'!E$4)/(D14/'Charges Summary'!D$4)-1)","v":-5.2009779022076374E-3},{"$f":"IF(E14=0,\"\",(F14/'Charges Summary'!F$4)/(E14/'Charges Summary'!E$4)-1)","v":4.09527458258514E-2},{"$f":"IF(F14=0,\"\",(G14/'Charges Summary'!G$4)/(F14/'Charges Summary'!F$4)-1)","v":2.974062753749962E-2},{"$f":"IF(G14=0,\"\",(H14/'Charges Summary'!H$4)/(G14/'Charges Summary'!G$4)-1)","v":1.9106515070977048E-2}]
[{"$f":"'DNSP Inputs General'!A50","v":"Mercury vapour 700 watt"},null,{"$f":"'DNSP Inputs General'!E50","v":120.06},{"$f":"IF('DNSP Inputs General'!$B50='DNSP Inputs General'!$A$41,D$6,IF('DNSP Inputs General'!$B50='DNSP Inputs General'!$A$42,D$7,D$8))*'DNSP Inputs General'!$D50","v":122.12965936481342},{"$f":"IF('DNSP Inputs General'!$B50='DNSP Inputs General'!$A$41,E$6,IF('DNSP Inputs General'!$B50='DNSP Inputs General'!$A$42,E$7,E$8))*'DNSP Inputs General'!$D50","v":122.73766488921362},{"$f":"IF('DNSP Inputs General'!$B50='DNSP Inputs General'!$A$41,F$6,IF('DNSP Inputs General'!$B50='DNSP Inputs General'!$A$42,F$7,F$8))*'DNSP Inputs General'!$D50","v":130.23468598151644},{"$f":"IF('DNSP Inputs General'!$B50='DNSP Inputs General'!$A$41,G$6,IF('DNSP Inputs General'!$B50='DNSP Inputs General'!$A$42,G$7,G$8))*'DNSP Inputs General'!$D50","v":137.22338193112853},{"$f":"IF('DNSP Inputs General'!$B50='DNSP Inputs General'!$A$41,H$6,IF('DNSP Inputs General'!$B50='DNSP Inputs General'!$A$42,H$7,H$8))*'DNSP Inputs General'!$D50","v":143.09395915629389},null,1.723854210239395E-2,4.9783609285605213E-3,6.1081666325246031E-2,5.366232426439721E-2,4.2781172877023099E-2,null,{"$f":"IF(C15=0,\"\",(D15/'Charges Summary'!D$4)/C15-1)","v":-5.8562116367355532E-3},{"$f":"IF(D15=0,\"\",(E15/'Charges Summary'!E$4)/(D15/'Charges Summary'!D$4)-1)","v":-5.2009779022073044E-3},{"$f":"IF(E15=0,\"\",(F15/'Charges Summary'!F$4)/(E15/'Charges Summary'!E$4)-1)","v":4.0952745825851178E-2},{"$f":"IF(F15=0,\"\",(G15/'Charges Summary'!G$4)/(F15/'Charges Summary'!F$4)-1)","v":2.974062753749962E-2},{"$f":"IF(G15=0,\"\",(H15/'Charges Summary'!H$4)/(G15/'Charges Summary'!G$4)-1)","v":1.9106515070976826E-2}]
[{"$f":"'DNSP Inputs General'!A51","v":"Sodium low pressure 90 watt"},null,{"$f":"'DNSP Inputs General'!E51","v":117.98},{"$f":"IF('DNSP Inputs General'!$B51='DNSP Inputs General'!$A$41,D$6,IF('DNSP Inputs General'!$B51='DNSP Inputs General'!$A$42,D$7,D$8))*'DNSP Inputs General'!$D51","v":122.36622686707197},{"$f":"IF('DNSP Inputs General'!$B51='DNSP Inputs General'!$A$41,E$6,IF('DNSP Inputs General'!$B51='DNSP Inputs General'!$A$42,E$7,E$8))*'DNSP Inputs General'!$D51","v":122.8720755209086},{"$f":"IF('DNSP Inputs General'!$B51='DNSP Inputs General'!$A$41,F$6,IF('DNSP Inputs General'!$B51='DNSP Inputs General'!$A$42,F$7,F$8))*'DNSP Inputs General'!$D51","v":130.17524877931473},{"$f":"IF('DNSP Inputs General'!$B51='DNSP Inputs General'!$A$41,G$6,IF('DNSP Inputs General'!$B51='DNSP Inputs General'!$A$42,G$7,G$8))*'DNSP Inputs General'!$D51","v":136.98166125266039},{"$f":"IF('DNSP Inputs General'!$B51='DNSP Inputs General'!$A$41,H$6,IF('DNSP Inputs General'!$B51='DNSP Inputs General'!$A$42,H$7,H$8))*'DNSP Inputs General'!$D51","v":142.7057964473023},null,3.7177715435429359E-2,4.1338910807973139E-3,5.943720920676876E-2,5.2286533247841271E-2,4.1787602386306633E-2,null,{"$f":"IF(C16=0,\"\",(D16/'Charges Summary'!D$4)/C16-1)","v":1.3630275056117691E-2},{"$f":"IF(D16=0,\"\",(E16/'Charges Summary'!E$4)/(D16/'Charges Summary'!D$4)-1)","v":-6.0368941879765936E-3},{"$f":"IF(E16=0,\"\",(F16/'Charges Summary'!F$4)/(E16/'Charges Summary'!E$4)-1)","v":3.9339484370868094E-2},{"$f":"IF(F16=0,\"\",(G16/'Charges Summary'!G$4)/(F16/'Charges Summary'!F$4)-1)","v":2.8396071627960096E-2},{"$f":"IF(G16=0,\"\",(H16/'Charges Summary'!H$4)/(G16/'Charges Summary'!G$4)-1)","v":1.813550198922198E-2}]
[{"$f":"'DNSP Inputs General'!A52","v":"Sodium low pressure 180 watt"},null,{"$f":"'DNSP Inputs General'!E52","v":117.28},{"$f":"IF('DNSP Inputs General'!$B52='DNSP Inputs General'!$A$41,D$6,IF('DNSP Inputs General'!$B52='DNSP Inputs General'!$A$42,D$7,D$8))*'DNSP Inputs General'!$D52","v":122.36622686707197},{"$f":"IF('DNSP Inputs General'!$B52='DNSP Inputs General'!$A$41,E$6,IF('DNSP Inputs General'!$B52='DNSP Inputs General'!$A$42,E$7,E$8))*'DNSP Inputs General'!$D52","v":122.8720755209086},{"$f":"IF('DNSP Inputs General'!$B52='DNSP Inputs General'!$A$41,F$6,IF('DNSP Inputs General'!$B52='DNSP Inputs General'!$A$42,F$7,F$8))*'DNSP Inputs General'!$D52","v":130.17524877931473},{"$f":"IF('DNSP Inputs General'!$B52='DNSP Inputs General'!$A$41,G$6,IF('DNSP Inputs General'!$B52='DNSP Inputs General'!$A$42,G$7,G$8))*'DNSP Inputs General'!$D52","v":136.98166125266039},{"$f":"IF('DNSP Inputs General'!$B52='DNSP Inputs General'!$A$41,H$6,IF('DNSP Inputs General'!$B52='DNSP Inputs General'!$A$42,H$7,H$8))*'DNSP Inputs General'!$D52","v":142.7057964473023},null,4.3368237270395404E-2,4.1338910807973139E-3,5.943720920676876E-2,5.2286533247841271E-2,4.1787602386306633E-2,null,{"$f":"IF(C17=0,\"\",(D17/'Charges Summary'!D$4)/C17-1)","v":1.9680251118014747E-2},{"$f":"IF(D17=0,\"\",(E17/'Charges Summary'!E$4)/(D17/'Charges Summary'!D$4)-1)","v":-6.0368941879765936E-3},{"$f":"IF(E17=0,\"\",(F17/'Charges Summary'!F$4)/(E17/'Charges Summary'!E$4)-1)","v":3.9339484370868094E-2},{"$f":"IF(F17=0,\"\",(G17/'Charges Summary'!G$4)/(F17/'Charges Summary'!F$4)-1)","v":2.8396071627960096E-2},{"$f":"IF(G17=0,\"\",(H17/'Charges Summary'!H$4)/(G17/'Charges Summary'!G$4)-1)","v":1.813550198922198E-2}]
[{"$f":"'DNSP Inputs General'!A53","v":"Sodium high pressure 400 watt"},null,{"$f":"'DNSP Inputs General'!E53","v":120.06},{"$f":"IF('DNSP Inputs General'!$B53='DNSP Inputs General'!$A$41,D$6,IF('DNSP Inputs General'!$B53='DNSP Inputs General'!$A$42,D$7,D$8))*'DNSP Inputs General'!$D53","v":122.12965936481342},{"$f":"IF('DNSP Inputs General'!$B53='DNSP Inputs General'!$A$41,E$6,IF('DNSP Inputs General'!$B53='DNSP Inputs General'!$A$42,E$7,E$8))*'DNSP Inputs General'!$D53","v":122.73766488921362},{"$f":"IF('DNSP Inputs General'!$B53='DNSP Inputs General'!$A$41,F$6,IF('DNSP Inputs General'!$B53='DNSP Inputs General'!$A$42,F$7,F$8))*'DNSP Inputs General'!$D53","v":130.23468598151644},{"$f":"IF('DNSP Inputs General'!$B53='DNSP Inputs General'!$A$41,G$6,IF('DNSP Inputs General'!$B53='DNSP Inputs General'!$A$42,G$7,G$8))*'DNSP Inputs General'!$D53","v":137.22338193112853},{"$f":"IF('DNSP Inputs General'!$B53='DNSP Inputs General'!$A$41,H$6,IF('DNSP Inputs General'!$B53='DNSP Inputs General'!$A$42,H$7,H$8))*'DNSP Inputs General'!$D53","v":143.09395915629389},null,1.723854210239395E-2,4.9783609285605213E-3,6.1081666325246031E-2,5.366232426439721E-2,4.2781172877023099E-2,null,{"$f":"IF(C18=0,\"\",(D18/'Charges Summary'!D$4)/C18-1)","v":-5.8562116367355532E-3},{"$f":"IF(D18=0,\"\",(E18/'Charges Summary'!E$4)/(D18/'Charges Summary'!D$4)-1)","v":-5.2009779022073044E-3},{"$f":"IF(E18=0,\"\",(F18/'Charges Summary'!F$4)/(E18/'Charges Summary'!E$4)-1)","v":4.0952745825851178E-2},{"$f":"IF(F18=0,\"\",(G18/'Charges Summary'!G$4)/(F18/'Charges Summary'!F$4)-1)","v":2.974062753749962E-2},{"$f":"IF(G18=0,\"\",(H18/'Charges Summary'!H$4)/(G18/'Charges Summary'!G$4)-1)","v":1.9106515070976826E-2}]
[{"$f":"'DNSP Inputs General'!A54","v":"Incandescent 100 watt"},null,{"$f":"'DNSP Inputs General'!E54","v":147.38},{"$f":"IF('DNSP Inputs General'!$B54='DNSP Inputs General'!$A$41,D$6,IF('DNSP Inputs General'!$B54='DNSP Inputs General'!$A$42,D$7,D$8))*'DNSP Inputs General'!$D54","v":133.67696462442396},{"$f":"IF('DNSP Inputs General'!$B54='DNSP Inputs General'!$A$41,E$6,IF('DNSP Inputs General'!$B54='DNSP Inputs General'!$A$42,E$7,E$8))*'DNSP Inputs General'!$D54","v":133.13930796073842},{"$f":"IF('DNSP Inputs General'!$B54='DNSP Inputs General'!$A$41,F$6,IF('DNSP Inputs General'!$B54='DNSP Inputs General'!$A$42,F$7,F$8))*'DNSP Inputs General'!$D54","v":144.92476377147023},{"$f":"IF('DNSP Inputs General'!$B54='DNSP Inputs General'!$A$41,G$6,IF('DNSP Inputs General'!$B54='DNSP Inputs General'!$A$42,G$7,G$8))*'DNSP Inputs General'!$D54","v":155.0581204781829},{"$f":"IF('DNSP Inputs General'!$B54='DNSP Inputs General'!$A$41,H$6,IF('DNSP Inputs General'!$B54='DNSP Inputs General'!$A$42,H$7,H$8))*'DNSP Inputs General'!$D54","v":162.86174069497361},null,-9.2977577524603339E-2,-4.0220591872064393E-3,8.8519731634831844E-2,6.9921498872972609E-2,5.0327065701075036E-2,null,{"$f":"IF(C19=0,\"\",(D19/'Charges Summary'!D$4)/C19-1)","v":-0.11357005275626764},{"$f":"IF(D19=0,\"\",(E19/'Charges Summary'!E$4)/(D19/'Charges Summary'!D$4)-1)","v":-1.4110233541663852E-2},{"$f":"IF(E19=0,\"\",(F19/'Charges Summary'!F$4)/(E19/'Charges Summary'!E$4)-1)","v":6.7870305831461142E-2},{"$f":"IF(F19=0,\"\",(G19/'Charges Summary'!G$4)/(F19/'Charges Summary'!F$4)-1)","v":4.5630663917385128E-2},{"$f":"IF(G19=0,\"\",(H19/'Charges Summary'!H$4)/(G19/'Charges Summary'!G$4)-1)","v":2.6481090618598158E-2}]
[{"$f":"'DNSP Inputs General'!A55","v":"Incandescent 150 watt"},null,{"$f":"'DNSP Inputs General'!E55","v":147.38},{"$f":"IF('DNSP Inputs General'!$B55='DNSP Inputs General'!$A$41,D$6,IF('DNSP Inputs General'!$B55='DNSP Inputs General'!$A$42,D$7,D$8))*'DNSP Inputs General'!$D55","v":133.67696462442396},{"$f":"IF('DNSP Inputs General'!$B55='DNSP Inputs General'!$A$41,E$6,IF('DNSP Inputs General'!$B55='DNSP Inputs General'!$A$42,E$7,E$8))*'DNSP Inputs General'!$D55","v":133.13930796073842},{"$f":"IF('DNSP Inputs General'!$B55='DNSP Inputs General'!$A$41,F$6,IF('DNSP Inputs General'!$B55='DNSP Inputs General'!$A$42,F$7,F$8))*'DNSP Inputs General'!$D55","v":144.92476377147023},{"$f":"IF('DNSP Inputs General'!$B55='DNSP Inputs General'!$A$41,G$6,IF('DNSP Inputs General'!$B55='DNSP Inputs General'!$A$42,G$7,G$8))*'DNSP Inputs General'!$D55","v":155.0581204781829},{"$f":"IF('DNSP Inputs General'!$B55='DNSP Inputs General'!$A$41,H$6,IF('DNSP Inputs General'!$B55='DNSP Inputs General'!$A$42,H$7,H$8))*'DNSP Inputs General'!$D55","v":162.86174069497361},null,-9.2977577524603339E-2,-4.0220591872064393E-3,8.8519731634831844E-2,6.9921498872972609E-2,5.0327065701075036E-2,null,{"$f":"IF(C20=0,\"\",(D20/'Charges Summary'!D$4)/C20-1)","v":-0.11357005275626764},{"$f":"IF(D20=0,\"\",(E20/'Charges Summary'!E$4)/(D20/'Charges Summary'!D$4)-1)","v":-1.4110233541663852E-2},{"$f":"IF(E20=0,\"\",(F20/'Charges Summary'!F$4)/(E20/'Charges Summary'!E$4)-1)","v":6.7870305831461142E-2},{"$f":"IF(F20=0,\"\",(G20/'Charges Summary'!G$4)/(F20/'Charges Summary'!F$4)-1)","v":4.5630663917385128E-2},{"$f":"IF(G20=0,\"\",(H20/'Charges Summary'!H$4)/(G20/'Charges Summary'!G$4)-1)","v":2.6481090618598158E-2}]
[{"$f":"'DNSP Inputs General'!A56","v":"Metal halide 250 watt"},null,{"$f":"'DNSP Inputs General'!E56","v":120.06},{"$f":"IF('DNSP Inputs General'!$B56='DNSP Inputs General'!$A$41,D$6,IF('DNSP Inputs General'!$B56='DNSP Inputs General'!$A$42,D$7,D$8))*'DNSP Inputs General'!$D56","v":122.12965936481342},{"$f":"IF('DNSP Inputs General'!$B56='DNSP Inputs General'!$A$41,E$6,IF('DNSP Inputs General'!$B56='DNSP Inputs General'!$A$42,E$7,E$8))*'DNSP Inputs General'!$D56","v":122.73766488921362},{"$f":"IF('DNSP Inputs General'!$B56='DNSP Inputs General'!$A$41,F$6,IF('DNSP Inputs General'!$B56='DNSP Inputs General'!$A$42,F$7,F$8))*'DNSP Inputs General'!$D56","v":130.23468598151644},{"$f":"IF('DNSP Inputs General'!$B56='DNSP Inputs General'!$A$41,G$6,IF('DNSP Inputs General'!$B56='DNSP Inputs General'!$A$42,G$7,G$8))*'DNSP Inputs General'!$D56","v":137.22338193112853},{"$f":"IF('DNSP Inputs General'!$B56='DNSP Inputs General'!$A$41,H$6,IF('DNSP Inputs General'!$B56='DNSP Inputs General'!$A$42,H$7,H$8))*'DNSP Inputs General'!$D56","v":143.09395915629389},null,1.723854210239395E-2,4.9783609285605213E-3,6.1081666325246031E-2,5.366232426439721E-2,4.2781172877023099E-2,null,{"$f":"IF(C21=0,\"\",(D21/'Charges Summary'!D$4)/C21-1)","v":-5.8562116367355532E-3},{"$f":"IF(D21=0,\"\",(E21/'Charges Summary'!E$4)/(D21/'Charges Summary'!D$4)-1)","v":-5.2009779022073044E-3},{"$f":"IF(E21=0,\"\",(F21/'Charges Summary'!F$4)/(E21/'Charges Summary'!E$4)-1)","v":4.0952745825851178E-2},{"$f":"IF(F21=0,\"\",(G21/'Charges Summary'!G$4)/(F21/'Charges Summary'!F$4)-1)","v":2.974062753749962E-2},{"$f":"IF(G21=0,\"\",(H21/'Charges Summary'!H$4)/(G21/'Charges Summary'!G$4)-1)","v":1.9106515070976826E-2}]
[{"$f":"'DNSP Inputs General'!A57","v":"Metal halide 400 watt"},null,{"$f":"'DNSP Inputs General'!E57","v":120.06},{"$f":"IF('DNSP Inputs General'!$B57='DNSP Inputs General'!$A$41,D$6,IF('DNSP Inputs General'!$B57='DNSP Inputs General'!$A$42,D$7,D$8))*'DNSP Inputs General'!$D57","v":122.12965936481342},{"$f":"IF('DNSP Inputs General'!$B57='DNSP Inputs General'!$A$41,E$6,IF('DNSP Inputs General'!$B57='DNSP Inputs General'!$A$42,E$7,E$8))*'DNSP Inputs General'!$D57","v":122.73766488921362},{"$f":"IF('DNSP Inputs General'!$B57='DNSP Inputs General'!$A$41,F$6,IF('DNSP Inputs General'!$B57='DNSP Inputs General'!$A$42,F$7,F$8))*'DNSP Inputs General'!$D57","v":130.23468598151644},{"$f":"IF('DNSP Inputs General'!$B57='DNSP Inputs General'!$A$41,G$6,IF('DNSP Inputs General'!$B57='DNSP Inputs General'!$A$42,G$7,G$8))*'DNSP Inputs General'!$D57","v":137.22338193112853},{"$f":"IF('DNSP Inputs General'!$B57='DNSP Inputs General'!$A$41,H$6,IF('DNSP Inputs General'!$B57='DNSP Inputs General'!$A$42,H$7,H$8))*'DNSP Inputs General'!$D57","v":143.09395915629389},null,1.723854210239395E-2,4.9783609285605213E-3,6.1081666325246031E-2,5.366232426439721E-2,4.2781172877023099E-2,null,{"$f":"IF(C22=0,\"\",(D22/'Charges Summary'!D$4)/C22-1)","v":-5.8562116367355532E-3},{"$f":"IF(D22=0,\"\",(E22/'Charges Summary'!E$4)/(D22/'Charges Summary'!D$4)-1)","v":-5.2009779022073044E-3},{"$f":"IF(E22=0,\"\",(F22/'Charges Summary'!F$4)/(E22/'Charges Summary'!E$4)-1)","v":4.0952745825851178E-2},{"$f":"IF(F22=0,\"\",(G22/'Charges Summary'!G$4)/(F22/'Charges Summary'!F$4)-1)","v":2.974062753749962E-2},{"$f":"IF(G22=0,\"\",(H22/'Charges Summary'!H$4)/(G22/'Charges Summary'!G$4)-1)","v":1.9106515070976826E-2}]
[{"$f":"'DNSP Inputs General'!A58","v":"Metal halide 70 watt"},null,null,{"$f":"IF('DNSP Inputs General'!$B58='DNSP Inputs General'!$A$41,D$6,IF('DNSP Inputs General'!$B58='DNSP Inputs General'!$A$42,D$7,D$8))*'DNSP Inputs General'!$D58","v":101.94070683589166},{"$f":"IF('DNSP Inputs General'!$B58='DNSP Inputs General'!$A$41,E$6,IF('DNSP Inputs General'!$B58='DNSP Inputs General'!$A$42,E$7,E$8))*'DNSP Inputs General'!$D58","v":101.53069527941204},{"$f":"IF('DNSP Inputs General'!$B58='DNSP Inputs General'!$A$41,F$6,IF('DNSP Inputs General'!$B58='DNSP Inputs General'!$A$42,F$7,F$8))*'DNSP Inputs General'!$D58","v":110.51816517824351},{"$f":"IF('DNSP Inputs General'!$B58='DNSP Inputs General'!$A$41,G$6,IF('DNSP Inputs General'!$B58='DNSP Inputs General'!$A$42,G$7,G$8))*'DNSP Inputs General'!$D58","v":118.24576094019704},{"$f":"IF('DNSP Inputs General'!$B58='DNSP Inputs General'!$A$41,H$6,IF('DNSP Inputs General'!$B58='DNSP Inputs General'!$A$42,H$7,H$8))*'DNSP Inputs General'!$D58","v":124.19672311990794},null,{"$f":"IF(C23=0,\"\",D23/C23-1)","v":""},{"$f":"IF(D23=0,\"\",E23/D23-1)","v":-4.0220591872064393E-3},{"$f":"IF(E23=0,\"\",F23/E23-1)","v":8.8519731634832066E-2},{"$f":"IF(F23=0,\"\",G23/F23-1)","v":6.9921498872972387E-2},{"$f":"IF(G23=0,\"\",H23/G23-1)","v":5.0327065701075036E-2},null,{"$f":"IF(C23=0,\"\",(D23/'Charges Summary'!D$4)/C23-1)","v":""},{"$f":"IF(D23=0,\"\",(E23/'Charges Summary'!E$4)/(D23/'Charges Summary'!D$4)-1)","v":-1.4110233541663741E-2},{"$f":"IF(E23=0,\"\",(F23/'Charges Summary'!F$4)/(E23/'Charges Summary'!E$4)-1)","v":6.7870305831461364E-2},{"$f":"IF(F23=0,\"\",(G23/'Charges Summary'!G$4)/(F23/'Charges Summary'!F$4)-1)","v":4.5630663917385128E-2},{"$f":"IF(G23=0,\"\",(H23/'Charges Summary'!H$4)/(G23/'Charges Summary'!G$4)-1)","v":2.6481090618598158E-2}]
[{"$f":"'DNSP Inputs General'!A59","v":"Metal halide 150 watt"},null,null,{"$f":"IF('DNSP Inputs General'!$B59='DNSP Inputs General'!$A$41,D$6,IF('DNSP Inputs General'!$B59='DNSP Inputs General'!$A$42,D$7,D$8))*'DNSP Inputs General'!$D59","v":120.55339387644868},{"$f":"IF('DNSP Inputs General'!$B59='DNSP Inputs General'!$A$41,E$6,IF('DNSP Inputs General'!$B59='DNSP Inputs General'!$A$42,E$7,E$8))*'DNSP Inputs General'!$D59","v":121.0517484761544},{"$f":"IF('DNSP Inputs General'!$B59='DNSP Inputs General'!$A$41,F$6,IF('DNSP Inputs General'!$B59='DNSP Inputs General'!$A$42,F$7,F$8))*'DNSP Inputs General'!$D59","v":128.24672657517672},{"$f":"IF('DNSP Inputs General'!$B59='DNSP Inputs General'!$A$41,G$6,IF('DNSP Inputs General'!$B59='DNSP Inputs General'!$A$42,G$7,G$8))*'DNSP Inputs General'!$D59","v":134.95230330817651},{"$f":"IF('DNSP Inputs General'!$B59='DNSP Inputs General'!$A$41,H$6,IF('DNSP Inputs General'!$B59='DNSP Inputs General'!$A$42,H$7,H$8))*'DNSP Inputs General'!$D59","v":140.59163649993485},null,"",4.133891080797536E-3,5.9437209206768538E-2,5.2286533247841271E-2,4.1787602386306633E-2,null,{"$f":"IF(C24=0,\"\",(D24/'Charges Summary'!D$4)/C24-1)","v":""},{"$f":"IF(D24=0,\"\",(E24/'Charges Summary'!E$4)/(D24/'Charges Summary'!D$4)-1)","v":-6.0368941879765936E-3},{"$f":"IF(E24=0,\"\",(F24/'Charges Summary'!F$4)/(E24/'Charges Summary'!E$4)-1)","v":3.9339484370868094E-2},{"$f":"IF(F24=0,\"\",(G24/'Charges Summary'!G$4)/(F24/'Charges Summary'!F$4)-1)","v":2.8396071627960096E-2},{"$f":"IF(G24=0,\"\",(H24/'Charges Summary'!H$4)/(G24/'Charges Summary'!G$4)-1)","v":1.813550198922198E-2}]
[]
[]
[]
[]
[]
[{"$f":"'DNSP Inputs General'!A$67","v":"Energy Efficient Lights"}]
[{"$f":"'DNSP Inputs General'!A68","v":"T5 2X14W"},null,{"$f":"'DNSP Inputs General'!E68","v":33.61},{"$f":"'Charges Summary'!D$89","v":39.675854832049275},{"$f":"'Charges Summary'!E$89","v":37.496751510838145},{"$f":"'Charges Summary'!F$89","v":39.315589092041762},{"$f":"'Charges Summary'!G$89","v":40.574171287405683},{"$f":"'Charges Summary'!H$89","v":41.328924453197892},null,{"$f":"IF(C31=0,\"\",D31/C31-1)","v":0.180477680215688},{"$f":"IF(D31=0,\"\",E31/D31-1)","v":-5.4922655868044457E-2},{"$f":"IF(E31=0,\"\",F31/E31-1)","v":4.850653744439426E-2},{"$f":"IF(F31=0,\"\",G31/F31-1)","v":3.2012293963533223E-2},{"$f":"IF(G31=0,\"\",H31/G31-1)","v":1.8601813465170869E-2},null,{"$f":"IF(C31=0,\"\",(D31/'Charges Summary'!D$4)/C31-1)","v":0.15367684620209054},{"$f":"IF(D31=0,\"\",(E31/'Charges Summary'!E$4)/(D31/'Charges Summary'!D$4)-1)","v":-6.4495262484482119E-2},{"$f":"IF(E31=0,\"\",(F31/'Charges Summary'!F$4)/(E31/'Charges Summary'!E$4)-1)","v":2.8616169525394808E-2},{"$f":"IF(F31=0,\"\",(G31/'Charges Summary'!G$4)/(F31/'Charges Summary'!F$4)-1)","v":8.5821261136380667E-3},{"$f":"IF(G31=0,\"\",(H31/'Charges Summary'!H$4)/(G31/'Charges Summary'!G$4)-1)","v":-4.5238911425111716E-3}]
[{"$f":"'DNSP Inputs General'!A69","v":"T5 2X24W"},null,null,{"$f":"'DNSP Inputs General'!$D69*D31","v":39.032543033452811},{"$f":"'DNSP Inputs General'!$D69*E31","v":36.888772104771853},{"$f":"'DNSP Inputs General'!$D69*F31","v":38.67811871014969},{"$f":"'DNSP Inputs General'!$D69*G31","v":39.916294016255435},{"$f":"'DNSP Inputs General'!$D69*H31","v":40.658809471766737},null,{"$f":"IF(C32=0,\"\",D32/C32-1)","v":""},{"$f":"IF(D32=0,\"\",E32/D32-1)","v":-5.4922655868044234E-2},{"$f":"IF(E32=0,\"\",F32/E32-1)","v":4.8506537444394038E-2},{"$f":"IF(F32=0,\"\",G32/F32-1)","v":3.2012293963533223E-2},{"$f":"IF(G32=0,\"\",H32/G32-1)","v":1.8601813465170869E-2},null,{"$f":"IF(C32=0,\"\",(D32/'Charges Summary'!D$4)/C32-1)","v":""},{"$f":"IF(D32=0,\"\",(E32/'Charges Summary'!E$4)/(D32/'Charges Summary'!D$4)-1)","v":-6.4495262484482008E-2},{"$f":"IF(E32=0,\"\",(F32/'Charges Summary'!F$4)/(E32/'Charges Summary'!E$4)-1)","v":2.8616169525394808E-2},{"$f":"IF(F32=0,\"\",(G32/'Charges Summary'!G$4)/(F32/'Charges Summary'!F$4)-1)","v":8.5821261136380667E-3},{"$f":"IF(G32=0,\"\",(H32/'Charges Summary'!H$4)/(G32/'Charges Summary'!G$4)-1)","v":-4.5238911425110606E-3}]
[{"$f":"'DNSP Inputs General'!A70","v":"CF32"},null,null,{"$f":"'DNSP Inputs General'!$D70*D31","v":38.139829712480392},{"$f":"'DNSP Inputs General'!$D70*E31","v":36.045088970316016},{"$f":"'DNSP Inputs General'!$D70*F31","v":37.793511428141173},{"$f":"'DNSP Inputs General'!$D70*G31","v":39.00336842589298},{"$f":"'DNSP Inputs General'!$D70*H31","v":39.728901809864773},null,"",-5.4922655868044457E-2,4.850653744439426E-2,3.2012293963533223E-2,1.8601813465170869E-2,null,{"$f":"IF(C33=0,\"\",(D33/'Charges Summary'!D$4)/C33-1)","v":""},{"$f":"IF(D33=0,\"\",(E33/'Charges Summary'!E$4)/(D33/'Charges Summary'!D$4)-1)","v":-6.4495262484482119E-2},{"$f":"IF(E33=0,\"\",(F33/'Charges Summary'!F$4)/(E33/'Charges Summary'!E$4)-1)","v":2.861616952539503E-2},{"$f":"IF(F33=0,\"\",(G33/'Charges Summary'!G$4)/(F33/'Charges Summary'!F$4)-1)","v":8.5821261136378446E-3},{"$f":"IF(G33=0,\"\",(H33/'Charges Summary'!H$4)/(G33/'Charges Summary'!G$4)-1)","v":-4.5238911425109496E-3}]
[{"$f":"'DNSP Inputs General'!A71","v":"CF42"},null,null,{"$f":"'DNSP Inputs General'!$D71*D31","v":38.139829712480392},{"$f":"'DNSP Inputs General'!$D71*E31","v":36.045088970316016},{"$f":"'DNSP Inputs General'!$D71*F31","v":37.793511428141173},{"$f":"'DNSP Inputs General'!$D71*G31","v":39.00336842589298},{"$f":"'DNSP Inputs General'!$D71*H31","v":39.728901809864773},null,"",-5.4922655868044457E-2,4.850653744439426E-2,3.2012293963533223E-2,1.8601813465170869E-2,null,{"$f":"IF(C34=0,\"\",(D34/'Charges Summary'!D$4)/C34-1)","v":""},{"$f":"IF(D34=0,\"\",(E34/'Charges Summary'!E$4)/(D34/'Charges Summary'!D$4)-1)","v":-6.4495262484482119E-2},{"$f":"IF(E34=0,\"\",(F34/'Charges Summary'!F$4)/(E34/'Charges Summary'!E$4)-1)","v":2.861616952539503E-2},{"$f":"IF(F34=0,\"\",(G34/'Charges Summary'!G$4)/(F34/'Charges Summary'!F$4)-1)","v":8.5821261136378446E-3},{"$f":"IF(G34=0,\"\",(H34/'Charges Summary'!H$4)/(G34/'Charges Summary'!G$4)-1)","v":-4.5238911425109496E-3}]
[{"$f":"'DNSP Inputs General'!A72","v":"Category P LED 18 Watt"},null,null,{"$f":"'Charges Summary'!D$107","v":26.433463406773754},{"$f":"'Charges Summary'!E$107","v":23.929510818060706},{"$f":"'Charges Summary'!F$107","v":25.468230082902906},{"$f":"'Charges Summary'!G$107","v":26.322969140976241},{"$f":"'Charges Summary'!H$107","v":26.651882766042707},null,"",-9.4726617930490087E-2,6.4302161316263096E-2,3.3560991686153008E-2,1.2495308690479545E-2,null,{"$f":"IF(C35=0,\"\",(D35/'Charges Summary'!D$4)/C35-1)","v":""},{"$f":"IF(D35=0,\"\",(E35/'Charges Summary'!E$4)/(D35/'Charges Summary'!D$4)-1)","v":-0.10389605366047583},{"$f":"IF(E35=0,\"\",(F35/'Charges Summary'!F$4)/(E35/'Charges Summary'!E$4)-1)","v":4.4112147415954484E-2},{"$f":"IF(F35=0,\"\",(G35/'Charges Summary'!G$4)/(F35/'Charges Summary'!F$4)-1)","v":1.0095663162492441E-2},{"$f":"IF(G35=0,\"\",(H35/'Charges Summary'!H$4)/(G35/'Charges Summary'!G$4)-1)","v":-1.0491757615426089E-2}]
[{"$f":"'DNSP Inputs General'!A73","v":"Category P LED 47 Watt"},null,null,{"$f":"'DNSP Inputs General'!$D73*D35","v":26.433463406773754},{"$f":"'DNSP Inputs General'!$D73*E35","v":23.929510818060706},{"$f":"'DNSP Inputs General'!$D73*F35","v":25.468230082902906},{"$f":"'DNSP Inputs General'!$D73*G35","v":26.322969140976241},{"$f":"'DNSP Inputs General'!$D73*H35","v":26.651882766042707},null,"",-9.4726617930490087E-2,6.4302161316263096E-2,3.3560991686153008E-2,1.2495308690479545E-2,null,{"$f":"IF(C36=0,\"\",(D36/'Charges Summary'!D$4)/C36-1)","v":""},{"$f":"IF(D36=0,\"\",(E36/'Charges Summary'!E$4)/(D36/'Charges Summary'!D$4)-1)","v":-0.10389605366047583},{"$f":"IF(E36=0,\"\",(F36/'Charges Summary'!F$4)/(E36/'Charges Summary'!E$4)-1)","v":4.4112147415954484E-2},{"$f":"IF(F36=0,\"\",(G36/'Charges Summary'!G$4)/(F36/'Charges Summary'!F$4)-1)","v":1.0095663162492441E-2},{"$f":"IF(G36=0,\"\",(H36/'Charges Summary'!H$4)/(G36/'Charges Summary'!G$4)-1)","v":-1.0491757615426089E-2}]

{"sheet":"PL Tariff Components","index":5,"n_rows":36,"n_cols":26,"rows_kept":36,"cut":false,"hidden":false,"merged":[[2,2,2,7],[2,9,2,13],[2,15,2,19],[2,21,2,25]]}
[{"$f":"'DNSP Inputs O & M'!$A$3","v":"Powercor"},null,null,null,"Global Check",{"$f":"IF(SUM('Total RAB'!F1,'Depn & WACC Post 2004'!F1,'Cashflow Summary'!F1,W1)<1,\"Ok\",\"Error\")","v":"Ok"},null,null,null,null,null,null,null,null,null,null,null,null,null,null,null,"Check",{"$f":"SUM(V6:Z36)","v":6.8922645368729718E-13}]
[]
["Public Lighting Tariffs",null,"Nominal Prices",null,null,null,null,null,null,"Operations, maintenance and repair Tariff",null,null,null,null,null,"Replacement Tariff",null,null,null,null,null,"Check"]
[null,null,"Actual"]
[{"$f":"'DNSP Inputs General'!A$40","v":"Existing Lights"},null,{"$f":"'DNSP Inputs General'!J$2","v":2015},{"$f":"'DNSP Inputs General'!K$2","v":2016},{"$f":"'DNSP Inputs General'!L$2","v":2017},{"$f":"'DNSP Inputs General'!M$2","v":2018},{"$f":"'DNSP Inputs General'!N$2","v":2019},{"$f":"'DNSP Inputs General'!O$2","v":2020},null,{"$f":"D5","v":2016},{"$f":"E5","v":2017},2018,2019,2020,null,{"$f":"J5","v":2016},{"$f":"K5","v":2017},2018,2019,2020,null,{"$f":"P5","v":2016},{"$f":"Q5","v":2017},2018,2019,2020]
[{"$f":"'DNSP Inputs General'!A41","v":"Mercury vapour 80 watt"},null,{"$f":"'DNSP Inputs General'!E41","v":53.01},{"$f":"'Charges Summary'!D$31","v":48.085239073533799},{"$f":"'Charges Summary'!E$31","v":47.891837395949075},{"$f":"'Charges Summary'!F$31","v":52.131209989737499},{"$f":"'Charges Summary'!G$31","v":55.776302330281624},{"$f":"'Charges Summary'!H$31","v":58.583359962220726},null,{"$f":"SUM('Charges Summary'!D25,'Charges Summary'!D8)","v":24.996265856959671},{"$f":"SUM('Charges Summary'!E25,'Charges Summary'!E8)","v":25.41121003607234},{"$f":"SUM('Charges Summary'!F25,'Charges Summary'!F8)","v":26.116104829187027},{"$f":"SUM('Charges Summary'!G25,'Charges Summary'!G8)","v":26.964310289062233},{"$f":"SUM('Charges Summary'!H25,'Charges Summary'!H8)","v":27.849461770128176},null,{"$f":"SUM('Charges Summary'!D27,'Charges Summary'!D11)","v":23.088973216574132},{"$f":"SUM('Charges Summary'!E27,'Charges Summary'!E11)","v":22.480627359876731},{"$f":"SUM('Charges Summary'!F27,'Charges Summary'!F11)","v":26.015105160550469},{"$f":"SUM('Charges Summary'!G27,'Charges Summary'!G11)","v":28.811992041219391},{"$f":"SUM('Charges Summary'!H27,'Charges Summary'!H11)","v":30.733898192092546},null,{"$f":"ABS(D6-J6-P6)","v":3.5527136788005009E-15},{"$f":"ABS(E6-K6-Q6)","v":3.5527136788005009E-15},3.5527136788005009E-15,0,3.5527136788005009E-15]
[{"$f":"'DNSP Inputs General'!A42","v":"Sodium high pressure 150 watt"},null,{"$f":"'DNSP Inputs General'!E42","v":87.39},{"$f":"'Charges Summary'!D$55","v":90.641649531164418},{"$f":"'Charges Summary'!E$55","v":91.016352237710066},{"$f":"'Charges Summary'!F$55","v":96.426110206899793},{"$f":"'Charges Summary'!G$55","v":101.46789722419287},{"$f":"'Charges Summary'!H$55","v":105.70799736837206},null,{"$f":"SUM('Charges Summary'!D49,'Charges Summary'!D8)","v":67.303120654019096},{"$f":"SUM('Charges Summary'!E49,'Charges Summary'!E8)","v":68.269111783333088},{"$f":"SUM('Charges Summary'!F49,'Charges Summary'!F8)","v":70.097195661575029},{"$f":"SUM('Charges Summary'!G49,'Charges Summary'!G8)","v":72.297858654322042},{"$f":"SUM('Charges Summary'!H49,'Charges Summary'!H8)","v":74.579925907109029},null,{"$f":"SUM('Charges Summary'!D51,'Charges Summary'!D11)","v":23.338528877145322},{"$f":"SUM('Charges Summary'!E51,'Charges Summary'!E11)","v":22.747240454376975},{"$f":"SUM('Charges Summary'!F51,'Charges Summary'!F11)","v":26.328914545324757},{"$f":"SUM('Charges Summary'!G51,'Charges Summary'!G11)","v":29.170038569870833},{"$f":"SUM('Charges Summary'!H51,'Charges Summary'!H11)","v":31.128071461263048},null,{"$f":"ABS(D7-J7-P7)","v":0},3.5527136788005009E-15,7.1054273576010019E-15,7.1054273576010019E-15,1.4210854715202004E-14]
[{"$f":"'DNSP Inputs General'!A43","v":"Sodium high pressure 250 watt"},null,{"$f":"'DNSP Inputs General'!E43","v":90.27},{"$f":"'Charges Summary'!D$71","v":91.826811552491293},{"$f":"'Charges Summary'!E$71","v":92.283958563318507},{"$f":"'Charges Summary'!F$71","v":97.920816527455969},{"$f":"'Charges Summary'!G$71","v":103.17547513618686},{"$f":"'Charges Summary'!H$71","v":107.58944297465706},null,{"$f":"SUM('Charges Summary'!D65,'Charges Summary'!D8)","v":67.285035297213128},{"$f":"SUM('Charges Summary'!E65,'Charges Summary'!E8)","v":68.251227304208655},{"$f":"SUM('Charges Summary'!F65,'Charges Summary'!F8)","v":70.0788514722814},{"$f":"SUM('Charges Summary'!G65,'Charges Summary'!G8)","v":72.279094050729157},{"$f":"SUM('Charges Summary'!H65,'Charges Summary'!H8)","v":74.560841781574297},null,{"$f":"SUM('Charges Summary'!D67,'Charges Summary'!D11)","v":24.541776255278165},{"$f":"SUM('Charges Summary'!E67,'Charges Summary'!E11)","v":24.032731259109859},{"$f":"SUM('Charges Summary'!F67,'Charges Summary'!F11)","v":27.841965055174562},{"$f":"SUM('Charges Summary'!G67,'Charges Summary'!G11)","v":30.896381085457712},{"$f":"SUM('Charges Summary'!H67,'Charges Summary'!H11)","v":33.028601193082764},null,0,7.1054273576010019E-15,7.1054273576010019E-15,7.1054273576010019E-15,0]
[{"$f":"'DNSP Inputs General'!A44","v":"Fluorescent 20 watt"},null,{"$f":"'DNSP Inputs General'!E44","v":147.38},{"$f":"IF('DNSP Inputs General'!$B44='DNSP Inputs General'!$A$41,D$6,IF('DNSP Inputs General'!$B44='DNSP Inputs General'!$A$42,D$7,D$8))*'DNSP Inputs General'!$D44","v":101.94070683589166},{"$f":"IF('DNSP Inputs General'!$B44='DNSP Inputs General'!$A$41,E$6,IF('DNSP Inputs General'!$B44='DNSP Inputs General'!$A$42,E$7,E$8))*'DNSP Inputs General'!$D44","v":101.53069527941204},{"$f":"IF('DNSP Inputs General'!$B44='DNSP Inputs General'!$A$41,F$6,IF('DNSP Inputs General'!$B44='DNSP Inputs General'!$A$42,F$7,F$8))*'DNSP Inputs General'!$D44","v":110.51816517824351},{"$f":"IF('DNSP Inputs General'!$B44='DNSP Inputs General'!$A$41,G$6,IF('DNSP Inputs General'!$B44='DNSP Inputs General'!$A$42,G$7,G$8))*'DNSP Inputs General'!$D44","v":118.24576094019704},{"$f":"IF('DNSP Inputs General'!$B44='DNSP Inputs General'!$A$41,H$6,IF('DNSP Inputs General'!$B44='DNSP Inputs General'!$A$42,H$7,H$8))*'DNSP Inputs General'!$D44","v":124.19672311990794},null,{"$f":"IF('DNSP Inputs General'!$B44='DNSP Inputs General'!$A$41,J$6,IF('DNSP Inputs General'!$B44='DNSP Inputs General'!$A$42,J$7,J$8))*'DNSP Inputs General'!$D44","v":52.992083616754506},{"$f":"IF('DNSP Inputs General'!$B44='DNSP Inputs General'!$A$41,K$6,IF('DNSP Inputs General'!$B44='DNSP Inputs General'!$A$42,K$7,K$8))*'DNSP Inputs General'!$D44","v":53.871765276473361},{"$f":"IF('DNSP Inputs General'!$B44='DNSP Inputs General'!$A$41,L$6,IF('DNSP Inputs General'!$B44='DNSP Inputs General'!$A$42,L$7,L$8))*'DNSP Inputs General'!$D44","v":55.366142237876502},{"$f":"IF('DNSP Inputs General'!$B44='DNSP Inputs General'!$A$41,M$6,IF('DNSP Inputs General'!$B44='DNSP Inputs General'!$A$42,M$7,M$8))*'DNSP Inputs General'!$D44","v":57.164337812811937},{"$f":"IF('DNSP Inputs General'!$B44='DNSP Inputs General'!$A$41,N$6,IF('DNSP Inputs General'!$B44='DNSP Inputs General'!$A$42,N$7,N$8))*'DNSP Inputs General'!$D44","v":59.040858952671734},null,{"$f":"IF('DNSP Inputs General'!$B44='DNSP Inputs General'!$A$41,P$6,IF('DNSP Inputs General'!$B44='DNSP Inputs General'!$A$42,P$7,P$8))*'DNSP Inputs General'!$D44","v":48.948623219137161},{"$f":"IF('DNSP Inputs General'!$B44='DNSP Inputs General'!$A$41,Q$6,IF('DNSP Inputs General'!$B44='DNSP Inputs General'!$A$42,Q$7,Q$8))*'DNSP Inputs General'!$D44","v":47.658930002938675},{"$f":"IF('DNSP Inputs General'!$B44='DNSP Inputs General'!$A$41,R$6,IF('DNSP Inputs General'!$B44='DNSP Inputs General'!$A$42,R$7,R$8))*'DNSP Inputs General'!$D44","v":55.152022940366997},{"$f":"IF('DNSP Inputs General'!$B44='DNSP Inputs General'!$A$41,S$6,IF('DNSP Inputs General'!$B44='DNSP Inputs General'!$A$42,S$7,S$8))*'DNSP Inputs General'!$D44","v":61.081423127385108},{"$f":"IF('DNSP Inputs General'!$B44='DNSP Inputs General'!$A$41,T$6,IF('DNSP Inputs General'!$B44='DNSP Inputs General'!$A$42,T$7,T$8))*'DNSP Inputs General'!$D44","v":65.155864167236203},null,7.1054273576010019E-15,7.1054273576010019E-15,7.1054273576010019E-15,0,1.4210854715202004E-14]
[{"$f":"'DNSP Inputs General'!A45","v":"Fluorescent 40 watt"},null,{"$f":"'DNSP Inputs General'!E45","v":147.38},{"$f":"IF('DNSP Inputs General'!$B45='DNSP Inputs General'!$A$41,D$6,IF('DNSP Inputs General'!$B45='DNSP Inputs General'!$A$42,D$7,D$8))*'DNSP Inputs General'!$D45","v":101.94070683589166},{"$f":"IF('DNSP Inputs General'!$B45='DNSP Inputs General'!$A$41,E$6,IF('DNSP Inputs General'!$B45='DNSP Inputs General'!$A$42,E$7,E$8))*'DNSP Inputs General'!$D45","v":101.53069527941204},{"$f":"IF('DNSP Inputs General'!$B45='DNSP Inputs General'!$A$41,F$6,IF('DNSP Inputs General'!$B45='DNSP Inputs General'!$A$42,F$7,F$8))*'DNSP Inputs General'!$D45","v":110.51816517824351},{"$f":"IF('DNSP Inputs General'!$B45='DNSP Inputs General'!$A$41,G$6,IF('DNSP Inputs General'!$B45='DNSP Inputs General'!$A$42,G$7,G$8))*'DNSP Inputs General'!$D45","v":118.24576094019704},{"$f":"IF('DNSP Inputs General'!$B45='DNSP Inputs General'!$A$41,H$6,IF('DNSP Inputs General'!$B45='DNSP Inputs General'!$A$42,H$7,H$8))*'DNSP Inputs General'!$D45","v":124.19672311990794},null,{"$f":"IF('DNSP Inputs General'!$B45='DNSP Inputs General'!$A$41,J$6,IF('DNSP Inputs General'!$B45='DNSP Inputs General'!$A$42,J$7,J$8))*'DNSP Inputs General'!$D45","v":52.992083616754506},{"$f":"IF('DNSP Inputs General'!$B45='DNSP Inputs General'!$A$41,K$6,IF('DNSP Inputs General'!$B45='DNSP Inputs General'!$A$42,K$7,K$8))*'DNSP Inputs General'!$D45","v":53.871765276473361},{"$f":"IF('DNSP Inputs General'!$B45='DNSP Inputs General'!$A$41,L$6,IF('DNSP Inputs General'!$B45='DNSP Inputs General'!$A$42,L$7,L$8))*'DNSP Inputs General'!$D45","v":55.366142237876502},{"$f":"IF('DNSP Inputs General'!$B45='DNSP Inputs General'!$A$41,M$6,IF('DNSP Inputs General'!$B45='DNSP Inputs General'!$A$42,M$7,M$8))*'DNSP Inputs General'!$D45","v":57.164337812811937},{"$f":"IF('DNSP Inputs General'!$B45='DNSP Inputs General'!$A$41,N$6,IF('DNSP Inputs General'!$B45='DNSP Inputs General'!$A$42,N$7,N$8))*'DNSP Inputs General'!$D45","v":59.040858952671734},null,{"$f":"IF('DNSP Inputs General'!$B45='DNSP Inputs General'!$A$41,P$6,IF('DNSP Inputs General'!$B45='DNSP Inputs General'!$A$42,P$7,P$8))*'DNSP Inputs General'!$D45","v":48.948623219137161},{"$f":"IF('DNSP Inputs General'!$B45='DNSP Inputs General'!$A$41,Q$6,IF('DNSP Inputs General'!$B45='DNSP Inputs General'!$A$42,Q$7,Q$8))*'DNSP Inputs General'!$D45","v":47.658930002938675},{"$f":"IF('DNSP Inputs General'!$B45='DNSP Inputs General'!$A$41,R$6,IF('DNSP Inputs General'!$B45='DNSP Inputs General'!$A$42,R$7,R$8))*'DNSP Inputs General'!$D45","v":55.152022940366997},{"$f":"IF('DNSP Inputs General'!$B45='DNSP Inputs General'!$A$41,S$6,IF('DNSP Inputs General'!$B45='DNSP Inputs General'!$A$42,S$7,S$8))*'DNSP Inputs General'!$D45","v":61.081423127385108},{"$f":"IF('DNSP Inputs General'!$B45='DNSP Inputs General'!$A$41,T$6,IF('DNSP Inputs General'!$B45='DNSP Inputs General'!$A$42,T$7,T$8))*'DNSP Inputs General'!$D45","v":65.155864167236203},null,7.1054273576010019E-15,7.1054273576010019E-15,7.1054273576010019E-15,0,1.4210854715202004E-14]
[{"$f":"'DNSP Inputs General'!A46","v":"Mercury vapour 50 watt"},null,{"$f":"'DNSP Inputs General'!E46","v":73.69},{"$f":"IF('DNSP Inputs General'!$B46='DNSP Inputs General'!$A$41,D$6,IF('DNSP Inputs General'!$B46='DNSP Inputs General'!$A$42,D$7,D$8))*'DNSP Inputs General'!$D46","v":66.83848231221198},{"$f":"IF('DNSP Inputs General'!$B46='DNSP Inputs General'!$A$41,E$6,IF('DNSP Inputs General'!$B46='DNSP Inputs General'!$A$42,E$7,E$8))*'DNSP Inputs General'!$D46","v":66.56965398036921},{"$f":"IF('DNSP Inputs General'!$B46='DNSP Inputs General'!$A$41,F$6,IF('DNSP Inputs General'!$B46='DNSP Inputs General'!$A$42,F$7,F$8))*'DNSP Inputs General'!$D46","v":72.462381885735113},{"$f":"IF('DNSP Inputs General'!$B46='DNSP Inputs General'!$A$41,G$6,IF('DNSP Inputs General'!$B46='DNSP Inputs General'!$A$42,G$7,G$8))*'DNSP Inputs General'!$D46","v":77.52906023909145},{"$f":"IF('DNSP Inputs General'!$B46='DNSP Inputs General'!$A$41,H$6,IF('DNSP Inputs General'!$B46='DNSP Inputs General'!$A$42,H$7,H$8))*'DNSP Inputs General'!$D46","v":81.430870347486803},null,{"$f":"IF('DNSP Inputs General'!$B46='DNSP Inputs General'!$A$41,J$6,IF('DNSP Inputs General'!$B46='DNSP Inputs General'!$A$42,J$7,J$8))*'DNSP Inputs General'!$D46","v":34.744809541173943},{"$f":"IF('DNSP Inputs General'!$B46='DNSP Inputs General'!$A$41,K$6,IF('DNSP Inputs General'!$B46='DNSP Inputs General'!$A$42,K$7,K$8))*'DNSP Inputs General'!$D46","v":35.321581950140548},{"$f":"IF('DNSP Inputs General'!$B46='DNSP Inputs General'!$A$41,L$6,IF('DNSP Inputs General'!$B46='DNSP Inputs General'!$A$42,L$7,L$8))*'DNSP Inputs General'!$D46","v":36.301385712569967},{"$f":"IF('DNSP Inputs General'!$B46='DNSP Inputs General'!$A$41,M$6,IF('DNSP Inputs General'!$B46='DNSP Inputs General'!$A$42,M$7,M$8))*'DNSP Inputs General'!$D46","v":37.480391301796502},{"$f":"IF('DNSP Inputs General'!$B46='DNSP Inputs General'!$A$41,N$6,IF('DNSP Inputs General'!$B46='DNSP Inputs General'!$A$42,N$7,N$8))*'DNSP Inputs General'!$D46","v":38.710751860478162},null,{"$f":"IF('DNSP Inputs General'!$B46='DNSP Inputs General'!$A$41,P$6,IF('DNSP Inputs General'!$B46='DNSP Inputs General'!$A$42,P$7,P$8))*'DNSP Inputs General'!$D46","v":32.093672771038044},{"$f":"IF('DNSP Inputs General'!$B46='DNSP Inputs General'!$A$41,Q$6,IF('DNSP Inputs General'!$B46='DNSP Inputs General'!$A$42,Q$7,Q$8))*'DNSP Inputs General'!$D46","v":31.248072030228656},{"$f":"IF('DNSP Inputs General'!$B46='DNSP Inputs General'!$A$41,R$6,IF('DNSP Inputs General'!$B46='DNSP Inputs General'!$A$42,R$7,R$8))*'DNSP Inputs General'!$D46","v":36.160996173165152},{"$f":"IF('DNSP Inputs General'!$B46='DNSP Inputs General'!$A$41,S$6,IF('DNSP Inputs General'!$B46='DNSP Inputs General'!$A$42,S$7,S$8))*'DNSP Inputs General'!$D46","v":40.048668937294948},{"$f":"IF('DNSP Inputs General'!$B46='DNSP Inputs General'!$A$41,T$6,IF('DNSP Inputs General'!$B46='DNSP Inputs General'!$A$42,T$7,T$8))*'DNSP Inputs General'!$D46","v":42.720118487008634},null,7.1054273576010019E-15,7.1054273576010019E-15,7.1054273576010019E-15,0,7.1054273576010019E-15]
[{"$f":"'DNSP Inputs General'!A47","v":"Mercury vapour 125 watt"},null,{"$f":"'DNSP Inputs General'!E47","v":71.569999999999993},{"$f":"IF('DNSP Inputs General'!$B47='DNSP Inputs General'!$A$41,D$6,IF('DNSP Inputs General'!$B47='DNSP Inputs General'!$A$42,D$7,D$8))*'DNSP Inputs General'!$D47","v":64.915072749270635},{"$f":"IF('DNSP Inputs General'!$B47='DNSP Inputs General'!$A$41,E$6,IF('DNSP Inputs General'!$B47='DNSP Inputs General'!$A$42,E$7,E$8))*'DNSP Inputs General'!$D47","v":64.65398048453126},{"$f":"IF('DNSP Inputs General'!$B47='DNSP Inputs General'!$A$41,F$6,IF('DNSP Inputs General'!$B47='DNSP Inputs General'!$A$42,F$7,F$8))*'DNSP Inputs General'!$D47","v":70.377133486145624},{"$f":"IF('DNSP Inputs General'!$B47='DNSP Inputs General'!$A$41,G$6,IF('DNSP Inputs General'!$B47='DNSP Inputs General'!$A$42,G$7,G$8))*'DNSP Inputs General'!$D47","v":75.298008145880203},{"$f":"IF('DNSP Inputs General'!$B47='DNSP Inputs General'!$A$41,H$6,IF('DNSP Inputs General'!$B47='DNSP Inputs General'!$A$42,H$7,H$8))*'DNSP Inputs General'!$D47","v":79.087535948997981},null,{"$f":"IF('DNSP Inputs General'!$B47='DNSP Inputs General'!$A$41,J$6,IF('DNSP Inputs General'!$B47='DNSP Inputs General'!$A$42,J$7,J$8))*'DNSP Inputs General'!$D47","v":33.744958906895555},{"$f":"IF('DNSP Inputs General'!$B47='DNSP Inputs General'!$A$41,K$6,IF('DNSP Inputs General'!$B47='DNSP Inputs General'!$A$42,K$7,K$8))*'DNSP Inputs General'!$D47","v":34.305133548697661},{"$f":"IF('DNSP Inputs General'!$B47='DNSP Inputs General'!$A$41,L$6,IF('DNSP Inputs General'!$B47='DNSP Inputs General'!$A$42,L$7,L$8))*'DNSP Inputs General'!$D47","v":35.256741519402489},{"$f":"IF('DNSP Inputs General'!$B47='DNSP Inputs General'!$A$41,M$6,IF('DNSP Inputs General'!$B47='DNSP Inputs General'!$A$42,M$7,M$8))*'DNSP Inputs General'!$D47","v":36.401818890234019},{"$f":"IF('DNSP Inputs General'!$B47='DNSP Inputs General'!$A$41,N$6,IF('DNSP Inputs General'!$B47='DNSP Inputs General'!$A$42,N$7,N$8))*'DNSP Inputs General'!$D47","v":37.596773389673039},null,{"$f":"IF('DNSP Inputs General'!$B47='DNSP Inputs General'!$A$41,P$6,IF('DNSP Inputs General'!$B47='DNSP Inputs General'!$A$42,P$7,P$8))*'DNSP Inputs General'!$D47","v":31.170113842375081},{"$f":"IF('DNSP Inputs General'!$B47='DNSP Inputs General'!$A$41,Q$6,IF('DNSP Inputs General'!$B47='DNSP Inputs General'!$A$42,Q$7,Q$8))*'DNSP Inputs General'!$D47","v":30.348846935833588},{"$f":"IF('DNSP Inputs General'!$B47='DNSP Inputs General'!$A$41,R$6,IF('DNSP Inputs General'!$B47='DNSP Inputs General'!$A$42,R$7,R$8))*'DNSP Inputs General'!$D47","v":35.120391966743135},{"$f":"IF('DNSP Inputs General'!$B47='DNSP Inputs General'!$A$41,S$6,IF('DNSP Inputs General'!$B47='DNSP Inputs General'!$A$42,S$7,S$8))*'DNSP Inputs General'!$D47","v":38.896189255646178},{"$f":"IF('DNSP Inputs General'!$B47='DNSP Inputs General'!$A$41,T$6,IF('DNSP Inputs General'!$B47='DNSP Inputs General'!$A$42,T$7,T$8))*'DNSP Inputs General'!$D47","v":41.490762559324942},null,0,1.0658141036401503E-14,0,7.1054273576010019E-15,0]
[{"$f":"'DNSP Inputs General'!A48","v":"Mercury vapour 250 watt"},null,{"$f":"'DNSP Inputs General'!E48","v":68.599999999999994},{"$f":"IF('DNSP Inputs General'!$B48='DNSP Inputs General'!$A$41,D$6,IF('DNSP Inputs General'!$B48='DNSP Inputs General'!$A$42,D$7,D$8))*'DNSP Inputs General'!$D48","v":69.788376779893383},{"$f":"IF('DNSP Inputs General'!$B48='DNSP Inputs General'!$A$41,E$6,IF('DNSP Inputs General'!$B48='DNSP Inputs General'!$A$42,E$7,E$8))*'DNSP Inputs General'!$D48","v":70.135808508122068},{"$f":"IF('DNSP Inputs General'!$B48='DNSP Inputs General'!$A$41,F$6,IF('DNSP Inputs General'!$B48='DNSP Inputs General'!$A$42,F$7,F$8))*'DNSP Inputs General'!$D48","v":74.41982056086654},{"$f":"IF('DNSP Inputs General'!$B48='DNSP Inputs General'!$A$41,G$6,IF('DNSP Inputs General'!$B48='DNSP Inputs General'!$A$42,G$7,G$8))*'DNSP Inputs General'!$D48","v":78.413361103502012},{"$f":"IF('DNSP Inputs General'!$B48='DNSP Inputs General'!$A$41,H$6,IF('DNSP Inputs General'!$B48='DNSP Inputs General'!$A$42,H$7,H$8))*'DNSP Inputs General'!$D48","v":81.767976660739365},null,{"$f":"IF('DNSP Inputs General'!$B48='DNSP Inputs General'!$A$41,J$6,IF('DNSP Inputs General'!$B48='DNSP Inputs General'!$A$42,J$7,J$8))*'DNSP Inputs General'!$D48","v":51.136626825881976},{"$f":"IF('DNSP Inputs General'!$B48='DNSP Inputs General'!$A$41,K$6,IF('DNSP Inputs General'!$B48='DNSP Inputs General'!$A$42,K$7,K$8))*'DNSP Inputs General'!$D48","v":51.87093275119858},{"$f":"IF('DNSP Inputs General'!$B48='DNSP Inputs General'!$A$41,L$6,IF('DNSP Inputs General'!$B48='DNSP Inputs General'!$A$42,L$7,L$8))*'DNSP Inputs General'!$D48","v":53.259927118933867},{"$f":"IF('DNSP Inputs General'!$B48='DNSP Inputs General'!$A$41,M$6,IF('DNSP Inputs General'!$B48='DNSP Inputs General'!$A$42,M$7,M$8))*'DNSP Inputs General'!$D48","v":54.932111478554162},{"$f":"IF('DNSP Inputs General'!$B48='DNSP Inputs General'!$A$41,N$6,IF('DNSP Inputs General'!$B48='DNSP Inputs General'!$A$42,N$7,N$8))*'DNSP Inputs General'!$D48","v":56.666239753996464},null,{"$f":"IF('DNSP Inputs General'!$B48='DNSP Inputs General'!$A$41,P$6,IF('DNSP Inputs General'!$B48='DNSP Inputs General'!$A$42,P$7,P$8))*'DNSP Inputs General'!$D48","v":18.651749954011407},{"$f":"IF('DNSP Inputs General'!$B48='DNSP Inputs General'!$A$41,Q$6,IF('DNSP Inputs General'!$B48='DNSP Inputs General'!$A$42,Q$7,Q$8))*'DNSP Inputs General'!$D48","v":18.264875756923495},{"$f":"IF('DNSP Inputs General'!$B48='DNSP Inputs General'!$A$41,R$6,IF('DNSP Inputs General'!$B48='DNSP Inputs General'!$A$42,R$7,R$8))*'DNSP Inputs General'!$D48","v":21.159893441932667},{"$f":"IF('DNSP Inputs General'!$B48='DNSP Inputs General'!$A$41,S$6,IF('DNSP Inputs General'!$B48='DNSP Inputs General'!$A$42,S$7,S$8))*'DNSP Inputs General'!$D48","v":23.481249624947861},{"$f":"IF('DNSP Inputs General'!$B48='DNSP Inputs General'!$A$41,T$6,IF('DNSP Inputs General'!$B48='DNSP Inputs General'!$A$42,T$7,T$8))*'DNSP Inputs General'!$D48","v":25.1017369067429},null,0,7.1054273576010019E-15,7.1054273576010019E-15,1.0658141036401503E-14,0]
[{"$f":"'DNSP Inputs General'!A49","v":"Mercury vapour 400 watt"},null,{"$f":"'DNSP Inputs General'!E49","v":79.44},{"$f":"IF('DNSP Inputs General'!$B49='DNSP Inputs General'!$A$41,D$6,IF('DNSP Inputs General'!$B49='DNSP Inputs General'!$A$42,D$7,D$8))*'DNSP Inputs General'!$D49","v":80.807594166192345},{"$f":"IF('DNSP Inputs General'!$B49='DNSP Inputs General'!$A$41,E$6,IF('DNSP Inputs General'!$B49='DNSP Inputs General'!$A$42,E$7,E$8))*'DNSP Inputs General'!$D49","v":81.20988353572028},{"$f":"IF('DNSP Inputs General'!$B49='DNSP Inputs General'!$A$41,F$6,IF('DNSP Inputs General'!$B49='DNSP Inputs General'!$A$42,F$7,F$8))*'DNSP Inputs General'!$D49","v":86.170318544161248},{"$f":"IF('DNSP Inputs General'!$B49='DNSP Inputs General'!$A$41,G$6,IF('DNSP Inputs General'!$B49='DNSP Inputs General'!$A$42,G$7,G$8))*'DNSP Inputs General'!$D49","v":90.794418119844437},{"$f":"IF('DNSP Inputs General'!$B49='DNSP Inputs General'!$A$41,H$6,IF('DNSP Inputs General'!$B49='DNSP Inputs General'!$A$42,H$7,H$8))*'DNSP Inputs General'!$D49","v":94.67870981769822},null,{"$f":"IF('DNSP Inputs General'!$B49='DNSP Inputs General'!$A$41,J$6,IF('DNSP Inputs General'!$B49='DNSP Inputs General'!$A$42,J$7,J$8))*'DNSP Inputs General'!$D49","v":59.210831061547552},{"$f":"IF('DNSP Inputs General'!$B49='DNSP Inputs General'!$A$41,K$6,IF('DNSP Inputs General'!$B49='DNSP Inputs General'!$A$42,K$7,K$8))*'DNSP Inputs General'!$D49","v":60.061080027703618},{"$f":"IF('DNSP Inputs General'!$B49='DNSP Inputs General'!$A$41,L$6,IF('DNSP Inputs General'!$B49='DNSP Inputs General'!$A$42,L$7,L$8))*'DNSP Inputs General'!$D49","v":61.66938929560763},{"$f":"IF('DNSP Inputs General'!$B49='DNSP Inputs General'!$A$41,M$6,IF('DNSP Inputs General'!$B49='DNSP Inputs General'!$A$42,M$7,M$8))*'DNSP Inputs General'!$D49","v":63.60560276464166},{"$f":"IF('DNSP Inputs General'!$B49='DNSP Inputs General'!$A$41,N$6,IF('DNSP Inputs General'!$B49='DNSP Inputs General'!$A$42,N$7,N$8))*'DNSP Inputs General'!$D49","v":65.613540767785381},null,{"$f":"IF('DNSP Inputs General'!$B49='DNSP Inputs General'!$A$41,P$6,IF('DNSP Inputs General'!$B49='DNSP Inputs General'!$A$42,P$7,P$8))*'DNSP Inputs General'!$D49","v":21.596763104644786},{"$f":"IF('DNSP Inputs General'!$B49='DNSP Inputs General'!$A$41,Q$6,IF('DNSP Inputs General'!$B49='DNSP Inputs General'!$A$42,Q$7,Q$8))*'DNSP Inputs General'!$D49","v":21.148803508016677},{"$f":"IF('DNSP Inputs General'!$B49='DNSP Inputs General'!$A$41,R$6,IF('DNSP Inputs General'!$B49='DNSP Inputs General'!$A$42,R$7,R$8))*'DNSP Inputs General'!$D49","v":24.500929248553614},{"$f":"IF('DNSP Inputs General'!$B49='DNSP Inputs General'!$A$41,S$6,IF('DNSP Inputs General'!$B49='DNSP Inputs General'!$A$42,S$7,S$8))*'DNSP Inputs General'!$D49","v":27.188815355202788},{"$f":"IF('DNSP Inputs General'!$B49='DNSP Inputs General'!$A$41,T$6,IF('DNSP Inputs General'!$B49='DNSP Inputs General'!$A$42,T$7,T$8))*'DNSP Inputs General'!$D49","v":29.065169049912832},null,7.1054273576010019E-15,1.4210854715202004E-14,3.5527136788005009E-15,1.0658141036401503E-14,7.1054273576010019E-15]
[{"$f":"'DNSP Inputs General'!A50","v":"Mercury vapour 700 watt"},null,{"$f":"'DNSP Inputs General'!E50","v":120.06},{"$f":"IF('DNSP Inputs General'!$B50='DNSP Inputs General'!$A$41,D$6,IF('DNSP Inputs General'!$B50='DNSP Inputs General'!$A$42,D$7,D$8))*'DNSP Inputs General'!$D50","v":122.12965936481342},{"$f":"IF('DNSP Inputs General'!$B50='DNSP Inputs General'!$A$41,E$6,IF('DNSP Inputs General'!$B50='DNSP Inputs General'!$A$42,E$7,E$8))*'DNSP Inputs General'!$D50","v":122.73766488921362},{"$f":"IF('DNSP Inputs General'!$B50='DNSP Inputs General'!$A$41,F$6,IF('DNSP Inputs General'!$B50='DNSP Inputs General'!$A$42,F$7,F$8))*'DNSP Inputs General'!$D50","v":130.23468598151644},{"$f":"IF('DNSP Inputs General'!$B50='DNSP Inputs General'!$A$41,G$6,IF('DNSP Inputs General'!$B50='DNSP Inputs General'!$A$42,G$7,G$8))*'DNSP Inputs General'!$D50","v":137.22338193112853},{"$f":"IF('DNSP Inputs General'!$B50='DNSP Inputs General'!$A$41,H$6,IF('DNSP Inputs General'!$B50='DNSP Inputs General'!$A$42,H$7,H$8))*'DNSP Inputs General'!$D50","v":143.09395915629389},null,{"$f":"IF('DNSP Inputs General'!$B50='DNSP Inputs General'!$A$41,J$6,IF('DNSP Inputs General'!$B50='DNSP Inputs General'!$A$42,J$7,J$8))*'DNSP Inputs General'!$D50","v":89.489096945293468},{"$f":"IF('DNSP Inputs General'!$B50='DNSP Inputs General'!$A$41,K$6,IF('DNSP Inputs General'!$B50='DNSP Inputs General'!$A$42,K$7,K$8))*'DNSP Inputs General'!$D50","v":90.774132314597509},{"$f":"IF('DNSP Inputs General'!$B50='DNSP Inputs General'!$A$41,L$6,IF('DNSP Inputs General'!$B50='DNSP Inputs General'!$A$42,L$7,L$8))*'DNSP Inputs General'!$D50","v":93.204872458134261},{"$f":"IF('DNSP Inputs General'!$B50='DNSP Inputs General'!$A$41,M$6,IF('DNSP Inputs General'!$B50='DNSP Inputs General'!$A$42,M$7,M$8))*'DNSP Inputs General'!$D50","v":96.131195087469777},{"$f":"IF('DNSP Inputs General'!$B50='DNSP Inputs General'!$A$41,N$6,IF('DNSP Inputs General'!$B50='DNSP Inputs General'!$A$42,N$7,N$8))*'DNSP Inputs General'!$D50","v":99.165919569493823},null,{"$f":"IF('DNSP Inputs General'!$B50='DNSP Inputs General'!$A$41,P$6,IF('DNSP Inputs General'!$B50='DNSP Inputs General'!$A$42,P$7,P$8))*'DNSP Inputs General'!$D50","v":32.640562419519959},{"$f":"IF('DNSP Inputs General'!$B50='DNSP Inputs General'!$A$41,Q$6,IF('DNSP Inputs General'!$B50='DNSP Inputs General'!$A$42,Q$7,Q$8))*'DNSP Inputs General'!$D50","v":31.963532574616114},{"$f":"IF('DNSP Inputs General'!$B50='DNSP Inputs General'!$A$41,R$6,IF('DNSP Inputs General'!$B50='DNSP Inputs General'!$A$42,R$7,R$8))*'DNSP Inputs General'!$D50","v":37.029813523382167},{"$f":"IF('DNSP Inputs General'!$B50='DNSP Inputs General'!$A$41,S$6,IF('DNSP Inputs General'!$B50='DNSP Inputs General'!$A$42,S$7,S$8))*'DNSP Inputs General'!$D50","v":41.092186843658759},{"$f":"IF('DNSP Inputs General'!$B50='DNSP Inputs General'!$A$41,T$6,IF('DNSP Inputs General'!$B50='DNSP Inputs General'!$A$42,T$7,T$8))*'DNSP Inputs General'!$D50","v":43.928039586800075},null,7.1054273576010019E-15,3.5527136788005009E-15,7.1054273576010019E-15,7.1054273576010019E-15,7.1054273576010019E-15]
[{"$f":"'DNSP Inputs General'!A51","v":"Sodium low pressure 90 watt"},null,{"$f":"'DNSP Inputs General'!E51","v":117.98},{"$f":"IF('DNSP Inputs General'!$B51='DNSP Inputs General'!$A$41,D$6,IF('DNSP Inputs General'!$B51='DNSP Inputs General'!$A$42,D$7,D$8))*'DNSP Inputs General'!$D51","v":122.36622686707197},{"$f":"IF('DNSP Inputs General'!$B51='DNSP Inputs General'!$A$41,E$6,IF('DNSP Inputs General'!$B51='DNSP Inputs General'!$A$42,E$7,E$8))*'DNSP Inputs General'!$D51","v":122.8720755209086},{"$f":"IF('DNSP Inputs General'!$B51='DNSP Inputs General'!$A$41,F$6,IF('DNSP Inputs General'!$B51='DNSP Inputs General'!$A$42,F$7,F$8))*'DNSP Inputs General'!$D51","v":130.17524877931473},{"$f":"IF('DNSP Inputs General'!$B51='DNSP Inputs General'!$A$41,G$6,IF('DNSP Inputs General'!$B51='DNSP Inputs General'!$A$42,G$7,G$8))*'DNSP Inputs General'!$D51","v":136.98166125266039},{"$f":"IF('DNSP Inputs General'!$B51='DNSP Inputs General'!$A$41,H$6,IF('DNSP Inputs General'!$B51='DNSP Inputs General'!$A$42,H$7,H$8))*'DNSP Inputs General'!$D51","v":142.7057964473023},null,{"$f":"IF('DNSP Inputs General'!$B51='DNSP Inputs General'!$A$41,J$6,IF('DNSP Inputs General'!$B51='DNSP Inputs General'!$A$42,J$7,J$8))*'DNSP Inputs General'!$D51","v":90.859212882925789},{"$f":"IF('DNSP Inputs General'!$B51='DNSP Inputs General'!$A$41,K$6,IF('DNSP Inputs General'!$B51='DNSP Inputs General'!$A$42,K$7,K$8))*'DNSP Inputs General'!$D51","v":92.163300907499675},{"$f":"IF('DNSP Inputs General'!$B51='DNSP Inputs General'!$A$41,L$6,IF('DNSP Inputs General'!$B51='DNSP Inputs General'!$A$42,L$7,L$8))*'DNSP Inputs General'!$D51","v":94.6312141431263},{"$f":"IF('DNSP Inputs General'!$B51='DNSP Inputs General'!$A$41,M$6,IF('DNSP Inputs General'!$B51='DNSP Inputs General'!$A$42,M$7,M$8))*'DNSP Inputs General'!$D51","v":97.602109183334761},{"$f":"IF('DNSP Inputs General'!$B51='DNSP Inputs General'!$A$41,N$6,IF('DNSP Inputs General'!$B51='DNSP Inputs General'!$A$42,N$7,N$8))*'DNSP Inputs General'!$D51","v":100.68289997459719},null,{"$f":"IF('DNSP Inputs General'!$B51='DNSP Inputs General'!$A$41,P$6,IF('DNSP Inputs General'!$B51='DNSP Inputs General'!$A$42,P$7,P$8))*'DNSP Inputs General'!$D51","v":31.507013984146187},{"$f":"IF('DNSP Inputs General'!$B51='DNSP Inputs General'!$A$41,Q$6,IF('DNSP Inputs General'!$B51='DNSP Inputs General'!$A$42,Q$7,Q$8))*'DNSP Inputs General'!$D51","v":30.708774613408917},{"$f":"IF('DNSP Inputs General'!$B51='DNSP Inputs General'!$A$41,R$6,IF('DNSP Inputs General'!$B51='DNSP Inputs General'!$A$42,R$7,R$8))*'DNSP Inputs General'!$D51","v":35.544034636188421},{"$f":"IF('DNSP Inputs General'!$B51='DNSP Inputs General'!$A$41,S$6,IF('DNSP Inputs General'!$B51='DNSP Inputs General'!$A$42,S$7,S$8))*'DNSP Inputs General'!$D51","v":39.379552069325626},{"$f":"IF('DNSP Inputs General'!$B51='DNSP Inputs General'!$A$41,T$6,IF('DNSP Inputs General'!$B51='DNSP Inputs General'!$A$42,T$7,T$8))*'DNSP Inputs General'!$D51","v":42.022896472705114},null,3.5527136788005009E-15,3.5527136788005009E-15,7.1054273576010019E-15,0,0]
[{"$f":"'DNSP Inputs General'!A52","v":"Sodium low pressure 180 watt"},null,{"$f":"'DNSP Inputs General'!E52","v":117.28},{"$f":"IF('DNSP Inputs General'!$B52='DNSP Inputs General'!$A$41,D$6,IF('DNSP Inputs General'!$B52='DNSP Inputs General'!$A$42,D$7,D$8))*'DNSP Inputs General'!$D52","v":122.36622686707197},{"$f":"IF('DNSP Inputs General'!$B52='DNSP Inputs General'!$A$41,E$6,IF('DNSP Inputs General'!$B52='DNSP Inputs General'!$A$42,E$7,E$8))*'DNSP Inputs General'!$D52","v":122.8720755209086},{"$f":"IF('DNSP Inputs General'!$B52='DNSP Inputs General'!$A$41,F$6,IF('DNSP Inputs General'!$B52='DNSP Inputs General'!$A$42,F$7,F$8))*'DNSP Inputs General'!$D52","v":130.17524877931473},{"$f":"IF('DNSP Inputs General'!$B52='DNSP Inputs General'!$A$41,G$6,IF('DNSP Inputs General'!$B52='DNSP Inputs General'!$A$42,G$7,G$8))*'DNSP Inputs General'!$D52","v":136.98166125266039},{"$f":"IF('DNSP Inputs General'!$B52='DNSP Inputs General'!$A$41,H$6,IF('DNSP Inputs General'!$B52='DNSP Inputs General'!$A$42,H$7,H$8))*'DNSP Inputs General'!$D52","v":142.7057964473023},null,{"$f":"IF('DNSP Inputs General'!$B52='DNSP Inputs General'!$A$41,J$6,IF('DNSP Inputs General'!$B52='DNSP Inputs General'!$A$42,J$7,J$8))*'DNSP Inputs General'!$D52","v":90.859212882925789},{"$f":"IF('DNSP Inputs General'!$B52='DNSP Inputs General'!$A$41,K$6,IF('DNSP Inputs General'!$B52='DNSP Inputs General'!$A$42,K$7,K$8))*'DNSP Inputs General'!$D52","v":92.163300907499675},{"$f":"IF('DNSP Inputs General'!$B52='DNSP Inputs General'!$A$41,L$6,IF('DNSP Inputs General'!$B52='DNSP Inputs General'!$A$42,L$7,L$8))*'DNSP Inputs General'!$D52","v":94.6312141431263},{"$f":"IF('DNSP Inputs General'!$B52='DNSP Inputs General'!$A$41,M$6,IF('DNSP Inputs General'!$B52='DNSP Inputs General'!$A$42,M$7,M$8))*'DNSP Inputs General'!$D52","v":97.602109183334761},{"$f":"IF('DNSP Inputs General'!$B52='DNSP Inputs General'!$A$41,N$6,IF('DNSP Inputs General'!$B52='DNSP Inputs General'!$A$42,N$7,N$8))*'DNSP Inputs General'!$D52","v":100.68289997459719},null,{"$f":"IF('DNSP Inputs General'!$B52='DNSP Inputs General'!$A$41,P$6,IF('DNSP Inputs General'!$B52='DNSP Inputs General'!$A$42,P$7,P$8))*'DNSP Inputs General'!$D52","v":31.507013984146187},{"$f":"IF('DNSP Inputs General'!$B52='DNSP Inputs General'!$A$41,Q$6,IF('DNSP Inputs General'!$B52='DNSP Inputs General'!$A$42,Q$7,Q$8))*'DNSP Inputs General'!$D52","v":30.708774613408917},{"$f":"IF('DNSP Inputs General'!$B52='DNSP Inputs General'!$A$41,R$6,IF('DNSP Inputs General'!$B52='DNSP Inputs General'!$A$42,R$7,R$8))*'DNSP Inputs General'!$D52","v":35.544034636188421},{"$f":"IF('DNSP Inputs General'!$B52='DNSP Inputs General'!$A$41,S$6,IF('DNSP Inputs General'!$B52='DNSP Inputs General'!$A$42,S$7,S$8))*'DNSP Inputs General'!$D52","v":39.379552069325626},{"$f":"IF('DNSP Inputs General'!$B52='DNSP Inputs General'!$A$41,T$6,IF('DNSP Inputs General'!$B52='DNSP Inputs General'!$A$42,T$7,T$8))*'DNSP Inputs General'!$D52","v":42.022896472705114},null,3.5527136788005009E-15,3.5527136788005009E-15,7.1054273576010019E-15,0,0]
[{"$f":"'DNSP Inputs General'!A53","v":"Sodium high pressure 400 watt"},null,{"$f":"'DNSP Inputs General'!E53","v":120.06},{"$f":"IF('DNSP Inputs General'!$B53='DNSP Inputs General'!$A$41,D$6,IF('DNSP Inputs General'!$B53='DNSP Inputs General'!$A$42,D$7,D$8))*'DNSP Inputs General'!$D53","v":122.12965936481342},{"$f":"IF('DNSP Inputs General'!$B53='DNSP Inputs General'!$A$41,E$6,IF('DNSP Inputs General'!$B53='DNSP Inputs General'!$A$42,E$7,E$8))*'DNSP Inputs General'!$D53","v":122.73766488921362},{"$f":"IF('DNSP Inputs General'!$B53='DNSP Inputs General'!$A$41,F$6,IF('DNSP Inputs General'!$B53='DNSP Inputs General'!$A$42,F$7,F$8))*'DNSP Inputs General'!$D53","v":130.23468598151644},{"$f":"IF('DNSP Inputs General'!$B53='DNSP Inputs General'!$A$41,G$6,IF('DNSP Inputs General'!$B53='DNSP Inputs General'!$A$42,G$7,G$8))*'DNSP Inputs General'!$D53","v":137.22338193112853},{"$f":"IF('DNSP Inputs General'!$B53='DNSP Inputs General'!$A$41,H$6,IF('DNSP Inputs General'!$B53='DNSP Inputs General'!$A$42,H$7,H$8))*'DNSP Inputs General'!$D53","v":143.09395915629389},null,{"$f":"IF('DNSP Inputs General'!$B53='DNSP Inputs General'!$A$41,J$6,IF('DNSP Inputs General'!$B53='DNSP Inputs General'!$A$42,J$7,J$8))*'DNSP Inputs General'!$D53","v":89.489096945293468},{"$f":"IF('DNSP Inputs General'!$B53='DNSP Inputs General'!$A$41,K$6,IF('DNSP Inputs General'!$B53='DNSP Inputs General'!$A$42,K$7,K$8))*'DNSP Inputs General'!$D53","v":90.774132314597509},{"$f":"IF('DNSP Inputs General'!$B53='DNSP Inputs General'!$A$41,L$6,IF('DNSP Inputs General'!$B53='DNSP Inputs General'!$A$42,L$7,L$8))*'DNSP Inputs General'!$D53","v":93.204872458134261},{"$f":"IF('DNSP Inputs General'!$B53='DNSP Inputs General'!$A$41,M$6,IF('DNSP Inputs General'!$B53='DNSP Inputs General'!$A$42,M$7,M$8))*'DNSP Inputs General'!$D53","v":96.131195087469777},{"$f":"IF('DNSP Inputs General'!$B53='DNSP Inputs General'!$A$41,N$6,IF('DNSP Inputs General'!$B53='DNSP Inputs General'!$A$42,N$7,N$8))*'DNSP Inputs General'!$D53","v":99.165919569493823},null,{"$f":"IF('DNSP Inputs General'!$B53='DNSP Inputs General'!$A$41,P$6,IF('DNSP Inputs General'!$B53='DNSP Inputs General'!$A$42,P$7,P$8))*'DNSP Inputs General'!$D53","v":32.640562419519959},{"$f":"IF('DNSP Inputs General'!$B53='DNSP Inputs General'!$A$41,Q$6,IF('DNSP Inputs General'!$B53='DNSP Inputs General'!$A$42,Q$7,Q$8))*'DNSP Inputs General'!$D53","v":31.963532574616114},{"$f":"IF('DNSP Inputs General'!$B53='DNSP Inputs General'!$A$41,R$6,IF('DNSP Inputs General'!$B53='DNSP Inputs General'!$A$42,R$7,R$8))*'DNSP Inputs General'!$D53","v":37.029813523382167},{"$f":"IF('DNSP Inputs General'!$B53='DNSP Inputs General'!$A$41,S$6,IF('DNSP Inputs General'!$B53='DNSP Inputs General'!$A$42,S$7,S$8))*'DNSP Inputs General'!$D53","v":41.092186843658759},{"$f":"IF('DNSP Inputs General'!$B53='DNSP Inputs General'!$A$41,T$6,IF('DNSP Inputs General'!$B53='DNSP Inputs General'!$A$42,T$7,T$8))*'DNSP Inputs General'!$D53","v":43.928039586800075},null,7.1054273576010019E-15,3.5527136788005009E-15,7.1054273576010019E-15,7.1054273576010019E-15,7.1054273576010019E-15]
[{"$f":"'DNSP Inputs General'!A54","v":"Incandescent 100 watt"},null,{"$f":"'DNSP Inputs General'!E54","v":147.38},{"$f":"IF('DNSP Inputs General'!$B54='DNSP Inputs General'!$A$41,D$6,IF('DNSP Inputs General'!$B54='DNSP Inputs General'!$A$42,D$7,D$8))*'DNSP Inputs General'!$D54","v":133.67696462442396},{"$f":"IF('DNSP Inputs General'!$B54='DNSP Inputs General'!$A$41,E$6,IF('DNSP Inputs General'!$B54='DNSP Inputs General'!$A$42,E$7,E$8))*'DNSP Inputs General'!$D54","v":133.13930796073842},{"$f":"IF('DNSP Inputs General'!$B54='DNSP Inputs General'!$A$41,F$6,IF('DNSP Inputs General'!$B54='DNSP Inputs General'!$A$42,F$7,F$8))*'DNSP Inputs General'!$D54","v":144.92476377147023},{"$f":"IF('DNSP Inputs General'!$B54='DNSP Inputs General'!$A$41,G$6,IF('DNSP Inputs General'!$B54='DNSP Inputs General'!$A$42,G$7,G$8))*'DNSP Inputs General'!$D54","v":155.0581204781829},{"$f":"IF('DNSP Inputs General'!$B54='DNSP Inputs General'!$A$41,H$6,IF('DNSP Inputs General'!$B54='DNSP Inputs General'!$A$42,H$7,H$8))*'DNSP Inputs General'!$D54","v":162.86174069497361},null,{"$f":"IF('DNSP Inputs General'!$B54='DNSP Inputs General'!$A$41,J$6,IF('DNSP Inputs General'!$B54='DNSP Inputs General'!$A$42,J$7,J$8))*'DNSP Inputs General'!$D54","v":69.489619082347886},{"$f":"IF('DNSP Inputs General'!$B54='DNSP Inputs General'!$A$41,K$6,IF('DNSP Inputs General'!$B54='DNSP Inputs General'!$A$42,K$7,K$8))*'DNSP Inputs General'!$D54","v":70.643163900281095},{"$f":"IF('DNSP Inputs General'!$B54='DNSP Inputs General'!$A$41,L$6,IF('DNSP Inputs General'!$B54='DNSP Inputs General'!$A$42,L$7,L$8))*'DNSP Inputs General'!$D54","v":72.602771425139935},{"$f":"IF('DNSP Inputs General'!$B54='DNSP Inputs General'!$A$41,M$6,IF('DNSP Inputs General'!$B54='DNSP Inputs General'!$A$42,M$7,M$8))*'DNSP Inputs General'!$D54","v":74.960782603593003},{"$f":"IF('DNSP Inputs General'!$B54='DNSP Inputs General'!$A$41,N$6,IF('DNSP Inputs General'!$B54='DNSP Inputs General'!$A$42,N$7,N$8))*'DNSP Inputs General'!$D54","v":77.421503720956323},null,{"$f":"IF('DNSP Inputs General'!$B54='DNSP Inputs General'!$A$41,P$6,IF('DNSP Inputs General'!$B54='DNSP Inputs General'!$A$42,P$7,P$8))*'DNSP Inputs General'!$D54","v":64.187345542076088},{"$f":"IF('DNSP Inputs General'!$B54='DNSP Inputs General'!$A$41,Q$6,IF('DNSP Inputs General'!$B54='DNSP Inputs General'!$A$42,Q$7,Q$8))*'DNSP Inputs General'!$D54","v":62.496144060457311},{"$f":"IF('DNSP Inputs General'!$B54='DNSP Inputs General'!$A$41,R$6,IF('DNSP Inputs General'!$B54='DNSP Inputs General'!$A$42,R$7,R$8))*'DNSP Inputs General'!$D54","v":72.321992346330305},{"$f":"IF('DNSP Inputs General'!$B54='DNSP Inputs General'!$A$41,S$6,IF('DNSP Inputs General'!$B54='DNSP Inputs General'!$A$42,S$7,S$8))*'DNSP Inputs General'!$D54","v":80.097337874589897},{"$f":"IF('DNSP Inputs General'!$B54='DNSP Inputs General'!$A$41,T$6,IF('DNSP Inputs General'!$B54='DNSP Inputs General'!$A$42,T$7,T$8))*'DNSP Inputs General'!$D54","v":85.440236974017267},null,1.4210854715202004E-14,1.4210854715202004E-14,1.4210854715202004E-14,0,1.4210854715202004E-14]
[{"$f":"'DNSP Inputs General'!A55","v":"Incandescent 150 watt"},null,{"$f":"'DNSP Inputs General'!E55","v":147.38},{"$f":"IF('DNSP Inputs General'!$B55='DNSP Inputs General'!$A$41,D$6,IF('DNSP Inputs General'!$B55='DNSP Inputs General'!$A$42,D$7,D$8))*'DNSP Inputs General'!$D55","v":133.67696462442396},{"$f":"IF('DNSP Inputs General'!$B55='DNSP Inputs General'!$A$41,E$6,IF('DNSP Inputs General'!$B55='DNSP Inputs General'!$A$42,E$7,E$8))*'DNSP Inputs General'!$D55","v":133.13930796073842},{"$f":"IF('DNSP Inputs General'!$B55='DNSP Inputs General'!$A$41,F$6,IF('DNSP Inputs General'!$B55='DNSP Inputs General'!$A$42,F$7,F$8))*'DNSP Inputs General'!$D55","v":144.92476377147023},{"$f":"IF('DNSP Inputs General'!$B55='DNSP Inputs General'!$A$41,G$6,IF('DNSP Inputs General'!$B55='DNSP Inputs General'!$A$42,G$7,G$8))*'DNSP Inputs General'!$D55","v":155.0581204781829},{"$f":"IF('DNSP Inputs General'!$B55='DNSP Inputs General'!$A$41,H$6,IF('DNSP Inputs General'!$B55='DNSP Inputs General'!$A$42,H$7,H$8))*'DNSP Inputs General'!$D55","v":162.86174069497361},null,{"$f":"IF('DNSP Inputs General'!$B55='DNSP Inputs General'!$A$41,J$6,IF('DNSP Inputs General'!$B55='DNSP Inputs General'!$A$42,J$7,J$8))*'DNSP Inputs General'!$D55","v":69.489619082347886},{"$f":"IF('DNSP Inputs General'!$B55='DNSP Inputs General'!$A$41,K$6,IF('DNSP Inputs General'!$B55='DNSP Inputs General'!$A$42,K$7,K$8))*'DNSP Inputs General'!$D55","v":70.643163900281095},{"$f":"IF('DNSP Inputs General'!$B55='DNSP Inputs General'!$A$41,L$6,IF('DNSP Inputs General'!$B55='DNSP Inputs General'!$A$42,L$7,L$8))*'DNSP Inputs General'!$D55","v":72.602771425139935},{"$f":"IF('DNSP Inputs General'!$B55='DNSP Inputs General'!$A$41,M$6,IF('DNSP Inputs General'!$B55='DNSP Inputs General'!$A$42,M$7,M$8))*'DNSP Inputs General'!$D55","v":74.960782603593003},{"$f":"IF('DNSP Inputs General'!$B55='DNSP Inputs General'!$A$41,N$6,IF('DNSP Inputs General'!$B55='DNSP Inputs General'!$A$42,N$7,N$8))*'DNSP Inputs General'!$D55","v":77.421503720956323},null,{"$f":"IF('DNSP Inputs General'!$B55='DNSP Inputs General'!$A$41,P$6,IF('DNSP Inputs General'!$B55='DNSP Inputs General'!$A$42,P$7,P$8))*'DNSP Inputs General'!$D55","v":64.187345542076088},{"$f":"IF('DNSP Inputs General'!$B55='DNSP Inputs General'!$A$41,Q$6,IF('DNSP Inputs General'!$B55='DNSP Inputs General'!$A$42,Q$7,Q$8))*'DNSP Inputs General'!$D55","v":62.496144060457311},{"$f":"IF('DNSP Inputs General'!$B55='DNSP Inputs General'!$A$41,R$6,IF('DNSP Inputs General'!$B55='DNSP Inputs General'!$A$42,R$7,R$8))*'DNSP Inputs General'!$D55","v":72.321992346330305},{"$f":"IF('DNSP Inputs General'!$B55='DNSP Inputs General'!$A$41,S$6,IF('DNSP Inputs General'!$B55='DNSP Inputs General'!$A$42,S$7,S$8))*'DNSP Inputs General'!$D55","v":80.097337874589897},{"$f":"IF('DNSP Inputs General'!$B55='DNSP Inputs General'!$A$41,T$6,IF('DNSP Inputs General'!$B55='DNSP Inputs General'!$A$42,T$7,T$8))*'DNSP Inputs General'!$D55","v":85.440236974017267},null,1.4210854715202004E-14,1.4210854715202004E-14,1.4210854715202004E-14,0,1.4210854715202004E-14]
[{"$f":"'DNSP Inputs General'!A56","v":"Metal halide 250 watt"},null,{"$f":"'DNSP Inputs General'!E56","v":120.06},{"$f":"IF('DNSP Inputs General'!$B56='DNSP Inputs General'!$A$41,D$6,IF('DNSP Inputs General'!$B56='DNSP Inputs General'!$A$42,D$7,D$8))*'DNSP Inputs General'!$D56","v":122.12965936481342},{"$f":"IF('DNSP Inputs General'!$B56='DNSP Inputs General'!$A$41,E$6,IF('DNSP Inputs General'!$B56='DNSP Inputs General'!$A$42,E$7,E$8))*'DNSP Inputs General'!$D56","v":122.73766488921362},{"$f":"IF('DNSP Inputs General'!$B56='DNSP Inputs General'!$A$41,F$6,IF('DNSP Inputs General'!$B56='DNSP Inputs General'!$A$42,F$7,F$8))*'DNSP Inputs General'!$D56","v":130.23468598151644},{"$f":"IF('DNSP Inputs General'!$B56='DNSP Inputs General'!$A$41,G$6,IF('DNSP Inputs General'!$B56='DNSP Inputs General'!$A$42,G$7,G$8))*'DNSP Inputs General'!$D56","v":137.22338193112853},{"$f":"IF('DNSP Inputs General'!$B56='DNSP Inputs General'!$A$41,H$6,IF('DNSP Inputs General'!$B56='DNSP Inputs General'!$A$42,H$7,H$8))*'DNSP Inputs General'!$D56","v":143.09395915629389},null,{"$f":"IF('DNSP Inputs General'!$B56='DNSP Inputs General'!$A$41,J$6,IF('DNSP Inputs General'!$B56='DNSP Inputs General'!$A$42,J$7,J$8))*'DNSP Inputs General'!$D56","v":89.489096945293468},{"$f":"IF('DNSP Inputs General'!$B56='DNSP Inputs General'!$A$41,K$6,IF('DNSP Inputs General'!$B56='DNSP Inputs General'!$A$42,K$7,K$8))*'DNSP Inputs General'!$D56","v":90.774132314597509},{"$f":"IF('DNSP Inputs General'!$B56='DNSP Inputs General'!$A$41,L$6,IF('DNSP Inputs General'!$B56='DNSP Inputs General'!$A$42,L$7,L$8))*'DNSP Inputs General'!$D56","v":93.204872458134261},{"$f":"IF('DNSP Inputs General'!$B56='DNSP Inputs General'!$A$41,M$6,IF('DNSP Inputs General'!$B56='DNSP Inputs General'!$A$42,M$7,M$8))*'DNSP Inputs General'!$D56","v":96.131195087469777},{"$f":"IF('DNSP Inputs General'!$B56='DNSP Inputs General'!$A$41,N$6,IF('DNSP Inputs General'!$B56='DNSP Inputs General'!$A$42,N$7,N$8))*'DNSP Inputs General'!$D56","v":99.165919569493823},null,{"$f":"IF('DNSP Inputs General'!$B56='DNSP Inputs General'!$A$41,P$6,IF('DNSP Inputs General'!$B56='DNSP Inputs General'!$A$42,P$7,P$8))*'DNSP Inputs General'!$D56","v":32.640562419519959},{"$f":"IF('DNSP Inputs General'!$B56='DNSP Inputs General'!$A$41,Q$6,IF('DNSP Inputs General'!$B56='DNSP Inputs General'!$A$42,Q$7,Q$8))*'DNSP Inputs General'!$D56","v":31.963532574616114},{"$f":"IF('DNSP Inputs General'!$B56='DNSP Inputs General'!$A$41,R$6,IF('DNSP Inputs General'!$B56='DNSP Inputs General'!$A$42,R$7,R$8))*'DNSP Inputs General'!$D56","v":37.029813523382167},{"$f":"IF('DNSP Inputs General'!$B56='DNSP Inputs General'!$A$41,S$6,IF('DNSP Inputs General'!$B56='DNSP Inputs General'!$A$42,S$7,S$8))*'DNSP Inputs General'!$D56","v":41.092186843658759},{"$f":"IF('DNSP Inputs General'!$B56='DNSP Inputs General'!$A$41,T$6,IF('DNSP Inputs General'!$B56='DNSP Inputs General'!$A$42,T$7,T$8))*'DNSP Inputs General'!$D56","v":43.928039586800075},null,7.1054273576010019E-15,3.5527136788005009E-15,7.1054273576010019E-15,7.1054273576010019E-15,7.1054273576010019E-15]
[{"$f":"'DNSP Inputs General'!A57","v":"Metal halide 400 watt"},null,{"$f":"'DNSP Inputs General'!E57","v":120.06},{"$f":"IF('DNSP Inputs General'!$B57='DNSP Inputs General'!$A$41,D$6,IF('DNSP Inputs General'!$B57='DNSP Inputs General'!$A$42,D$7,D$8))*'DNSP Inputs General'!$D57","v":122.12965936481342},{"$f":"IF('DNSP Inputs General'!$B57='DNSP Inputs General'!$A$41,E$6,IF('DNSP Inputs General'!$B57='DNSP Inputs General'!$A$42,E$7,E$8))*'DNSP Inputs General'!$D57","v":122.73766488921362},{"$f":"IF('DNSP Inputs General'!$B57='DNSP Inputs General'!$A$41,F$6,IF('DNSP Inputs General'!$B57='DNSP Inputs General'!$A$42,F$7,F$8))*'DNSP Inputs General'!$D57","v":130.23468598151644},{"$f":"IF('DNSP Inputs General'!$B57='DNSP Inputs General'!$A$41,G$6,IF('DNSP Inputs General'!$B57='DNSP Inputs General'!$A$42,G$7,G$8))*'DNSP Inputs General'!$D57","v":137.22338193112853},{"$f":"IF('DNSP Inputs General'!$B57='DNSP Inputs General'!$A$41,H$6,IF('DNSP Inputs General'!$B57='DNSP Inputs General'!$A$42,H$7,H$8))*'DNSP Inputs General'!$D57","v":143.09395915629389},null,{"$f":"IF('DNSP Inputs General'!$B57='DNSP Inputs General'!$A$41,J$6,IF('DNSP Inputs General'!$B57='DNSP Inputs General'!$A$42,J$7,J$8))*'DNSP Inputs General'!$D57","v":89.489096945293468},{"$f":"IF('DNSP Inputs General'!$B57='DNSP Inputs General'!$A$41,K$6,IF('DNSP Inputs General'!$B57='DNSP Inputs General'!$A$42,K$7,K$8))*'DNSP Inputs General'!$D57","v":90.774132314597509},{"$f":"IF('DNSP Inputs General'!$B57='DNSP Inputs General'!$A$41,L$6,IF('DNSP Inputs General'!$B57='DNSP Inputs General'!$A$42,L$7,L$8))*'DNSP Inputs General'!$D57","v":93.204872458134261},{"$f":"IF('DNSP Inputs General'!$B57='DNSP Inputs General'!$A$41,M$6,IF('DNSP Inputs General'!$B57='DNSP Inputs General'!$A$42,M$7,M$8))*'DNSP Inputs General'!$D57","v":96.131195087469777},{"$f":"IF('DNSP Inputs General'!$B57='DNSP Inputs General'!$A$41,N$6,IF('DNSP Inputs General'!$B57='DNSP Inputs General'!$A$42,N$7,N$8))*'DNSP Inputs General'!$D57","v":99.165919569493823},null,{"$f":"IF('DNSP Inputs General'!$B57='DNSP Inputs General'!$A$41,P$6,IF('DNSP Inputs General'!$B57='DNSP Inputs General'!$A$42,P$7,P$8))*'DNSP Inputs General'!$D57","v":32.640562419519959},{"$f":"IF('DNSP Inputs General'!$B57='DNSP Inputs General'!$A$41,Q$6,IF('DNSP Inputs General'!$B57='DNSP Inputs General'!$A$42,Q$7,Q$8))*'DNSP Inputs General'!$D57","v":31.963532574616114},{"$f":"IF('DNSP Inputs General'!$B57='DNSP Inputs General'!$A$41,R$6,IF('DNSP Inputs General'!$B57='DNSP Inputs General'!$A$42,R$7,R$8))*'DNSP Inputs General'!$D57","v":37.029813523382167},{"$f":"IF('DNSP Inputs General'!$B57='DNSP Inputs General'!$A$41,S$6,IF('DNSP Inputs General'!$B57='DNSP Inputs General'!$A$42,S$7,S$8))*'DNSP Inputs General'!$D57","v":41.092186843658759},{"$f":"IF('DNSP Inputs General'!$B57='DNSP Inputs General'!$A$41,T$6,IF('DNSP Inputs General'!$B57='DNSP Inputs General'!$A$42,T$7,T$8))*'DNSP Inputs General'!$D57","v":43.928039586800075},null,7.1054273576010019E-15,3.5527136788005009E-15,7.1054273576010019E-15,7.1054273576010019E-15,7.1054273576010019E-15]
[{"$f":"'DNSP Inputs General'!A58","v":"Metal halide 70 watt"},null,null,{"$f":"IF('DNSP Inputs General'!$B58='DNSP Inputs General'!$A$41,D$6,IF('DNSP Inputs General'!$B58='DNSP Inputs General'!$A$42,D$7,D$8))*'DNSP Inputs General'!$D58","v":101.94070683589166},{"$f":"IF('DNSP Inputs General'!$B58='DNSP Inputs General'!$A$41,E$6,IF('DNSP Inputs General'!$B58='DNSP Inputs General'!$A$42,E$7,E$8))*'DNSP Inputs General'!$D58","v":101.53069527941204},{"$f":"IF('DNSP Inputs General'!$B58='DNSP Inputs General'!$A$41,F$6,IF('DNSP Inputs General'!$B58='DNSP Inputs General'!$A$42,F$7,F$8))*'DNSP Inputs General'!$D58","v":110.51816517824351},{"$f":"IF('DNSP Inputs General'!$B58='DNSP Inputs General'!$A$41,G$6,IF('DNSP Inputs General'!$B58='DNSP Inputs General'!$A$42,G$7,G$8))*'DNSP Inputs General'!$D58","v":118.24576094019704},{"$f":"IF('DNSP Inputs General'!$B58='DNSP Inputs General'!$A$41,H$6,IF('DNSP Inputs General'!$B58='DNSP Inputs General'!$A$42,H$7,H$8))*'DNSP Inputs General'!$D58","v":124.19672311990794},null,{"$f":"IF('DNSP Inputs General'!$B58='DNSP Inputs General'!$A$41,J$6,IF('DNSP Inputs General'!$B58='DNSP Inputs General'!$A$42,J$7,J$8))*'DNSP Inputs General'!$D58","v":52.992083616754506},{"$f":"IF('DNSP Inputs General'!$B58='DNSP Inputs General'!$A$41,K$6,IF('DNSP Inputs General'!$B58='DNSP Inputs General'!$A$42,K$7,K$8))*'DNSP Inputs General'!$D58","v":53.871765276473361},{"$f":"IF('DNSP Inputs General'!$B58='DNSP Inputs General'!$A$41,L$6,IF('DNSP Inputs General'!$B58='DNSP Inputs General'!$A$42,L$7,L$8))*'DNSP Inputs General'!$D58","v":55.366142237876502},{"$f":"IF('DNSP Inputs General'!$B58='DNSP Inputs General'!$A$41,M$6,IF('DNSP Inputs General'!$B58='DNSP Inputs General'!$A$42,M$7,M$8))*'DNSP Inputs General'!$D58","v":57.164337812811937},{"$f":"IF('DNSP Inputs General'!$B58='DNSP Inputs General'!$A$41,N$6,IF('DNSP Inputs General'!$B58='DNSP Inputs General'!$A$42,N$7,N$8))*'DNSP Inputs General'!$D58","v":59.040858952671734},null,{"$f":"IF('DNSP Inputs General'!$B58='DNSP Inputs General'!$A$41,P$6,IF('DNSP Inputs General'!$B58='DNSP Inputs General'!$A$42,P$7,P$8))*'DNSP Inputs General'!$D58","v":48.948623219137161},{"$f":"IF('DNSP Inputs General'!$B58='DNSP Inputs General'!$A$41,Q$6,IF('DNSP Inputs General'!$B58='DNSP Inputs General'!$A$42,Q$7,Q$8))*'DNSP Inputs General'!$D58","v":47.658930002938675},{"$f":"IF('DNSP Inputs General'!$B58='DNSP Inputs General'!$A$41,R$6,IF('DNSP Inputs General'!$B58='DNSP Inputs General'!$A$42,R$7,R$8))*'DNSP Inputs General'!$D58","v":55.152022940366997},{"$f":"IF('DNSP Inputs General'!$B58='DNSP Inputs General'!$A$41,S$6,IF('DNSP Inputs General'!$B58='DNSP Inputs General'!$A$42,S$7,S$8))*'DNSP Inputs General'!$D58","v":61.081423127385108},{"$f":"IF('DNSP Inputs General'!$B58='DNSP Inputs General'!$A$41,T$6,IF('DNSP Inputs General'!$B58='DNSP Inputs General'!$A$42,T$7,T$8))*'DNSP Inputs General'!$D58","v":65.155864167236203},null,7.1054273576010019E-15,7.1054273576010019E-15,7.1054273576010019E-15,0,1.4210854715202004E-14]
[{"$f":"'DNSP Inputs General'!A59","v":"Metal halide 150 watt"},null,null,{"$f":"IF('DNSP Inputs General'!$B59='DNSP Inputs General'!$A$41,D$6,IF('DNSP Inputs General'!$B59='DNSP Inputs General'!$A$42,D$7,D$8))*'DNSP Inputs General'!$D59","v":120.55339387644868},{"$f":"IF('DNSP Inputs General'!$B59='DNSP Inputs General'!$A$41,E$6,IF('DNSP Inputs General'!$B59='DNSP Inputs General'!$A$42,E$7,E$8))*'DNSP Inputs General'!$D59","v":121.0517484761544},{"$f":"IF('DNSP Inputs General'!$B59='DNSP Inputs General'!$A$41,F$6,IF('DNSP Inputs General'!$B59='DNSP Inputs General'!$A$42,F$7,F$8))*'DNSP Inputs General'!$D59","v":128.24672657517672},{"$f":"IF('DNSP Inputs General'!$B59='DNSP Inputs General'!$A$41,G$6,IF('DNSP Inputs General'!$B59='DNSP Inputs General'!$A$42,G$7,G$8))*'DNSP Inputs General'!$D59","v":134.95230330817651},{"$f":"IF('DNSP Inputs General'!$B59='DNSP Inputs General'!$A$41,H$6,IF('DNSP Inputs General'!$B59='DNSP Inputs General'!$A$42,H$7,H$8))*'DNSP Inputs General'!$D59","v":140.59163649993485},null,{"$f":"IF('DNSP Inputs General'!$B59='DNSP Inputs General'!$A$41,J$6,IF('DNSP Inputs General'!$B59='DNSP Inputs General'!$A$42,J$7,J$8))*'DNSP Inputs General'!$D59","v":89.513150469845399},{"$f":"IF('DNSP Inputs General'!$B59='DNSP Inputs General'!$A$41,K$6,IF('DNSP Inputs General'!$B59='DNSP Inputs General'!$A$42,K$7,K$8))*'DNSP Inputs General'!$D59","v":90.797918671833017},{"$f":"IF('DNSP Inputs General'!$B59='DNSP Inputs General'!$A$41,L$6,IF('DNSP Inputs General'!$B59='DNSP Inputs General'!$A$42,L$7,L$8))*'DNSP Inputs General'!$D59","v":93.229270229894794},{"$f":"IF('DNSP Inputs General'!$B59='DNSP Inputs General'!$A$41,M$6,IF('DNSP Inputs General'!$B59='DNSP Inputs General'!$A$42,M$7,M$8))*'DNSP Inputs General'!$D59","v":96.15615201024832},{"$f":"IF('DNSP Inputs General'!$B59='DNSP Inputs General'!$A$41,N$6,IF('DNSP Inputs General'!$B59='DNSP Inputs General'!$A$42,N$7,N$8))*'DNSP Inputs General'!$D59","v":99.191301456455008},null,{"$f":"IF('DNSP Inputs General'!$B59='DNSP Inputs General'!$A$41,P$6,IF('DNSP Inputs General'!$B59='DNSP Inputs General'!$A$42,P$7,P$8))*'DNSP Inputs General'!$D59","v":31.040243406603281},{"$f":"IF('DNSP Inputs General'!$B59='DNSP Inputs General'!$A$41,Q$6,IF('DNSP Inputs General'!$B59='DNSP Inputs General'!$A$42,Q$7,Q$8))*'DNSP Inputs General'!$D59","v":30.253829804321377},{"$f":"IF('DNSP Inputs General'!$B59='DNSP Inputs General'!$A$41,R$6,IF('DNSP Inputs General'!$B59='DNSP Inputs General'!$A$42,R$7,R$8))*'DNSP Inputs General'!$D59","v":35.017456345281929},{"$f":"IF('DNSP Inputs General'!$B59='DNSP Inputs General'!$A$41,S$6,IF('DNSP Inputs General'!$B59='DNSP Inputs General'!$A$42,S$7,S$8))*'DNSP Inputs General'!$D59","v":38.796151297928212},{"$f":"IF('DNSP Inputs General'!$B59='DNSP Inputs General'!$A$41,T$6,IF('DNSP Inputs General'!$B59='DNSP Inputs General'!$A$42,T$7,T$8))*'DNSP Inputs General'!$D59","v":41.400335043479856},null,0,7.1054273576010019E-15,0,2.1316282072803006E-14,1.4210854715202004E-14]
[]
[]
[]
[]
[]
[{"$f":"'DNSP Inputs General'!A$67","v":"Energy Efficient Lights"}]
[{"$f":"'DNSP Inputs General'!A68","v":"T5 2X14W"},null,{"$f":"'DNSP Inputs General'!E68","v":33.61},{"$f":"'Charges Summary'!D$89","v":39.675854832049275},{"$f":"'Charges Summary'!E$89","v":37.496751510838145},{"$f":"'Charges Summary'!F$89","v":39.315589092041762},{"$f":"'Charges Summary'!G$89","v":40.574171287405683},{"$f":"'Charges Summary'!H$89","v":41.328924453197892},null,{"$f":"SUM('Charges Summary'!D83,'Charges Summary'!D8)","v":26.239212645757661},{"$f":"SUM('Charges Summary'!E83,'Charges Summary'!E8)","v":26.506540230628175},{"$f":"SUM('Charges Summary'!F83,'Charges Summary'!F8)","v":27.141790305908241},{"$f":"SUM('Charges Summary'!G83,'Charges Summary'!G8)","v":27.907799631456815},{"$f":"SUM('Charges Summary'!H83,'Charges Summary'!H8)","v":28.69229012458144},null,{"$f":"SUM('Charges Summary'!D85,'Charges Summary'!D11)","v":13.436642186291618},{"$f":"SUM('Charges Summary'!E85,'Charges Summary'!E11)","v":10.990211280209968},{"$f":"SUM('Charges Summary'!F85,'Charges Summary'!F11)","v":12.173798786133526},{"$f":"SUM('Charges Summary'!G85,'Charges Summary'!G11)","v":12.666371655948865},{"$f":"SUM('Charges Summary'!H85,'Charges Summary'!H11)","v":12.636634328616454},null,{"$f":"ABS(D31-J31-P31)","v":3.5527136788005009E-15},1.7763568394002505E-15,5.3290705182007514E-15,3.5527136788005009E-15,1.7763568394002505E-15]
[{"$f":"'DNSP Inputs General'!A69","v":"T5 2X24W"},null,null,{"$f":"'DNSP Inputs General'!$D69*D31","v":39.032543033452811},{"$f":"'DNSP Inputs General'!$D69*E31","v":36.888772104771853},{"$f":"'DNSP Inputs General'!$D69*F31","v":38.67811871014969},{"$f":"'DNSP Inputs General'!$D69*G31","v":39.916294016255435},{"$f":"'DNSP Inputs General'!$D69*H31","v":40.658809471766737},null,{"$f":"'DNSP Inputs General'!$D69*J31","v":25.813765099577456},{"$f":"'DNSP Inputs General'!$D69*K31","v":26.07675818453195},{"$f":"'DNSP Inputs General'!$D69*L31","v":26.701708195195469},{"$f":"'DNSP Inputs General'!$D69*M31","v":27.455297300964371},{"$f":"'DNSP Inputs General'!$D69*N31","v":28.227067917170146},null,{"$f":"'DNSP Inputs General'!$D69*P31","v":13.21877793387536},{"$f":"'DNSP Inputs General'!$D69*Q31","v":10.812013920239895},{"$f":"'DNSP Inputs General'!$D69*R31","v":11.976410514954228},{"$f":"'DNSP Inputs General'!$D69*S31","v":12.460996715291062},{"$f":"'DNSP Inputs General'!$D69*T31","v":12.43174155459659},null,5.3290705182007514E-15,7.1054273576010019E-15,7.1054273576010019E-15,1.7763568394002505E-15,1.7763568394002505E-15]
[{"$f":"'DNSP Inputs General'!A70","v":"CF32"},null,null,{"$f":"'DNSP Inputs General'!$D70*D31","v":38.139829712480392},{"$f":"'DNSP Inputs General'!$D70*E31","v":36.045088970316016},{"$f":"'DNSP Inputs General'!$D70*F31","v":37.793511428141173},{"$f":"'DNSP Inputs General'!$D70*G31","v":39.00336842589298},{"$f":"'DNSP Inputs General'!$D70*H31","v":39.728901809864773},null,{"$f":"'DNSP Inputs General'!$D70*J31","v":25.223378458637978},{"$f":"'DNSP Inputs General'!$D70*K31","v":25.480356628549369},{"$f":"'DNSP Inputs General'!$D70*L31","v":26.09101340705061},{"$f":"'DNSP Inputs General'!$D70*M31","v":26.827367175816669},{"$f":"'DNSP Inputs General'!$D70*N31","v":27.581486625680771},null,{"$f":"'DNSP Inputs General'!$D70*P31","v":12.916451253842416},{"$f":"'DNSP Inputs General'!$D70*Q31","v":10.564732341766643},{"$f":"'DNSP Inputs General'!$D70*R31","v":11.702498021090564},{"$f":"'DNSP Inputs General'!$D70*S31","v":12.176001250076304},{"$f":"'DNSP Inputs General'!$D70*T31","v":12.147415184184},null,1.7763568394002505E-15,3.5527136788005009E-15,1.7763568394002505E-15,7.1054273576010019E-15,1.7763568394002505E-15]
[{"$f":"'DNSP Inputs General'!A71","v":"CF42"},null,null,{"$f":"'DNSP Inputs General'!$D71*D31","v":38.139829712480392},{"$f":"'DNSP Inputs General'!$D71*E31","v":36.045088970316016},{"$f":"'DNSP Inputs General'!$D71*F31","v":37.793511428141173},{"$f":"'DNSP Inputs General'!$D71*G31","v":39.00336842589298},{"$f":"'DNSP Inputs General'!$D71*H31","v":39.728901809864773},null,{"$f":"'DNSP Inputs General'!$D71*J31","v":25.223378458637978},{"$f":"'DNSP Inputs General'!$D71*K31","v":25.480356628549369},{"$f":"'DNSP Inputs General'!$D71*L31","v":26.09101340705061},{"$f":"'DNSP Inputs General'!$D71*M31","v":26.827367175816669},{"$f":"'DNSP Inputs General'!$D71*N31","v":27.581486625680771},null,{"$f":"'DNSP Inputs General'!$D71*P31","v":12.916451253842416},{"$f":"'DNSP Inputs General'!$D71*Q31","v":10.564732341766643},{"$f":"'DNSP Inputs General'!$D71*R31","v":11.702498021090564},{"$f":"'DNSP Inputs General'!$D71*S31","v":12.176001250076304},{"$f":"'DNSP Inputs General'!$D71*T31","v":12.147415184184},null,1.7763568394002505E-15,3.5527136788005009E-15,1.7763568394002505E-15,7.1054273576010019E-15,1.7763568394002505E-15]
[{"$f":"'DNSP Inputs General'!A72","v":"Category P LED 18 Watt"},null,null,{"$f":"'Charges Summary'!D$107","v":26.433463406773754},{"$f":"'Charges Summary'!E$107","v":23.929510818060706},{"$f":"'Charges Summary'!F$107","v":25.468230082902906},{"$f":"'Charges Summary'!G$107","v":26.322969140976241},{"$f":"'Charges Summary'!H$107","v":26.651882766042707},null,{"$f":"SUM('Charges Summary'!D101,'Charges Summary'!D8)","v":12.455282559847181},{"$f":"SUM('Charges Summary'!E101,'Charges Summary'!E8)","v":12.561345355092429},{"$f":"SUM('Charges Summary'!F101,'Charges Summary'!F8)","v":12.903509332977812},{"$f":"SUM('Charges Summary'!G101,'Charges Summary'!G8)","v":13.27068459623759},{"$f":"SUM('Charges Summary'!H101,'Charges Summary'!H8)","v":13.645309076283233},null,{"$f":"SUM('Charges Summary'!D103,'Charges Summary'!D11)","v":13.978180846926575},{"$f":"SUM('Charges Summary'!E103,'Charges Summary'!E11)","v":11.368165462968275},{"$f":"SUM('Charges Summary'!F103,'Charges Summary'!F11)","v":12.564720749925096},{"$f":"SUM('Charges Summary'!G103,'Charges Summary'!G11)","v":13.052284544738647},{"$f":"SUM('Charges Summary'!H103,'Charges Summary'!H11)","v":13.006573689759474},null,1.7763568394002505E-15,1.7763568394002505E-15,1.7763568394002505E-15,3.5527136788005009E-15,0]
[{"$f":"'DNSP Inputs General'!A73","v":"Category P LED 47 Watt"},null,null,{"$f":"'DNSP Inputs General'!$D73*D35","v":26.433463406773754},{"$f":"'DNSP Inputs General'!$D73*E35","v":23.929510818060706},{"$f":"'DNSP Inputs General'!$D73*F35","v":25.468230082902906},{"$f":"'DNSP Inputs General'!$D73*G35","v":26.322969140976241},{"$f":"'DNSP Inputs General'!$D73*H35","v":26.651882766042707},null,{"$f":"'DNSP Inputs General'!$D73*J35","v":12.455282559847181},{"$f":"'DNSP Inputs General'!$D73*K35","v":12.561345355092429},{"$f":"'DNSP Inputs General'!$D73*L35","v":12.903509332977812},{"$f":"'DNSP Inputs General'!$D73*M35","v":13.27068459623759},{"$f":"'DNSP Inputs General'!$D73*N35","v":13.645309076283233},null,{"$f":"'DNSP Inputs General'!$D73*P35","v":13.978180846926575},{"$f":"'DNSP Inputs General'!$D73*Q35","v":11.368165462968275},{"$f":"'DNSP Inputs General'!$D73*R35","v":12.564720749925096},{"$f":"'DNSP Inputs General'!$D73*S35","v":13.052284544738647},{"$f":"'DNSP Inputs General'!$D73*T35","v":13.006573689759474},null,1.7763568394002505E-15,1.7763568394002505E-15,1.7763568394002505E-15,3.5527136788005009E-15,0]

{"sheet":"Cashflow Summary","index":6,"n_rows":158,"n_cols":15,"rows_kept":158,"cut":false,"hidden":false,"merged":[[149,3,149,7],[85,3,85,7],[85,10,85,14],[130,3,130,7],[130,10,130,14],[3,2,3,7],[3,9,3,14],[41,3,41,7],[41,10,41,14],[137,3,137,7]]}
[{"$f":"'DNSP Inputs O & M'!$A$3","v":"Powercor"},null,null,null,"Check",{"$f":"SUM(C129,C135,C158)","v":1.909211277961731E-8}]
[null,null,{"$f":"'DNSP Inputs General'!J$2","v":2015},{"$f":"'DNSP Inputs General'!K$2","v":2016},{"$f":"'DNSP Inputs General'!L$2","v":2017},{"$f":"'DNSP Inputs General'!M$2","v":2018},{"$f":"'DNSP Inputs General'!N$2","v":2019},{"$f":"'DNSP Inputs General'!O$2","v":2020},null,{"$f":"C2","v":2015},{"$f":"D2","v":2016},2017,2018,2019,2020]
[]
["Public Lighting - Revenue",null,"Revenue - Nominal ",null,null,null,null,null,null,"Revenue - Real 2015 $ "]
[null,null,{"$f":"C$2","v":2015},{"$f":"D$2","v":2016},2017,2018,2019,2020,null,{"$f":"J$2","v":2015},2016,2017,2018,2019,2020]
[{"$f":"'DNSP Inputs General'!A$40","v":"Existing Lights"}]
[{"$f":"'DNSP Inputs General'!A$41","v":"Mercury vapour 80 watt"},null,{"$f":"IF('PL Tariffs'!C6=0,\"\",'DNSP Inputs General'!J41*'PL Tariffs'!C6)","v":3719181.5999999996},{"$f":"'DNSP Inputs General'!K41*'PL Tariffs'!D6","v":2882320.919001481},{"$f":"'DNSP Inputs General'!L41*'PL Tariffs'!E6","v":2341630.9716376779},{"$f":"'DNSP Inputs General'!M41*'PL Tariffs'!F6","v":2294020.3651513704},{"$f":"'DNSP Inputs General'!N41*'PL Tariffs'!G6","v":2208979.5367750903},{"$f":"'DNSP Inputs General'!O41*'PL Tariffs'!H6","v":2088135.8955492303},null,{"$f":"C7","v":3719181.5999999996},{"$f":"D7/'Charges Summary'!D$4","v":2816882.4902884839},{"$f":"E7/'Charges Summary'!E$4","v":2265288.3379425011},{"$f":"F7/'Charges Summary'!F$4","v":2177130.7352115912},{"$f":"G7/'Charges Summary'!G$4","v":2048827.1904848169},{"$f":"H7/'Charges Summary'!H$4","v":1892774.1320801035}]
[{"$f":"'DNSP Inputs General'!A$42","v":"Sodium high pressure 150 watt"},null,{"$f":"IF('PL Tariffs'!C7=0,\"\",'DNSP Inputs General'!J42*'PL Tariffs'!C7)","v":2469117.06},{"$f":"'DNSP Inputs General'!K42*'PL Tariffs'!D7","v":2675350.570450068},{"$f":"'DNSP Inputs General'!L42*'PL Tariffs'!E7","v":2806372.2794440635},{"$f":"'DNSP Inputs General'!M42*'PL Tariffs'!F7","v":3105942.8581373254},{"$f":"'DNSP Inputs General'!N42*'PL Tariffs'!G7","v":3414290.2007394084},{"$f":"'DNSP Inputs General'!O42*'PL Tariffs'!H7","v":3715802.0851222826},null,2469117.06,{"$f":"D8/'Charges Summary'!D$4","v":2614611.0683243568},{"$f":"E8/'Charges Summary'!E$4","v":2714877.994675504},{"$f":"F8/'Charges Summary'!F$4","v":2947682.488344219},{"$f":"G8/'Charges Summary'!G$4","v":3166752.1056773812},{"$f":"H8/'Charges Summary'!H$4","v":3368159.170885223}]
[{"$f":"'DNSP Inputs General'!A$43","v":"Sodium high pressure 250 watt"},null,{"$f":"IF('PL Tariffs'!C8=0,\"\",'DNSP Inputs General'!J43*'PL Tariffs'!C8)","v":1184161.8600000003},{"$f":"'DNSP Inputs General'!K43*'PL Tariffs'!D8","v":1245425.9627785885},{"$f":"'DNSP Inputs General'!L43*'PL Tariffs'!E8","v":1294062.9681259047},{"$f":"'DNSP Inputs General'!M43*'PL Tariffs'!F8","v":1419662.1499414532},{"$f":"'DNSP Inputs General'!N43*'PL Tariffs'!G8","v":1546561.6561264687},{"$f":"'DNSP Inputs General'!O43*'PL Tariffs'!H8","v":1667405.3998963425},null,1184161.8600000003,{"$f":"D9/'Charges Summary'!D$4","v":1217150.5831894081},{"$f":"E9/'Charges Summary'!E$4","v":1251873.4957663738},{"$f":"F9/'Charges Summary'!F$4","v":1347324.6128092499},{"$f":"G9/'Charges Summary'!G$4","v":1434435.0049792954},{"$f":"H9/'Charges Summary'!H$4","v":1511406.3291289611}]
[{"$f":"'DNSP Inputs General'!A$44","v":"Fluorescent 20 watt"},null,{"$f":"IF('PL Tariffs'!C9=0,\"\",'DNSP Inputs General'!J44*'PL Tariffs'!C9)","v":0},{"$f":"'DNSP Inputs General'!K44*'PL Tariffs'!D9","v":0},{"$f":"'DNSP Inputs General'!L44*'PL Tariffs'!E9","v":0},{"$f":"'DNSP Inputs General'!M44*'PL Tariffs'!F9","v":0},{"$f":"'DNSP Inputs General'!N44*'PL Tariffs'!G9","v":0},{"$f":"'DNSP Inputs General'!O44*'PL Tariffs'!H9","v":0},null,0,{"$f":"D10/'Charges Summary'!D$4","v":0},{"$f":"E10/'Charges Summary'!E$4","v":0},{"$f":"F10/'Charges Summary'!F$4","v":0},{"$f":"G10/'Charges Summary'!G$4","v":0},{"$f":"H10/'Charges Summary'!H$4","v":0}]
[{"$f":"'DNSP Inputs General'!A$45","v":"Fluorescent 40 watt"},null,{"$f":"IF('PL Tariffs'!C10=0,\"\",'DNSP Inputs General'!J45*'PL Tariffs'!C10)","v":0},{"$f":"'DNSP Inputs General'!K45*'PL Tariffs'!D10","v":0},{"$f":"'DNSP Inputs General'!L45*'PL Tariffs'!E10","v":0},{"$f":"'DNSP Inputs General'!M45*'PL Tariffs'!F10","v":0},{"$f":"'DNSP Inputs General'!N45*'PL Tariffs'!G10","v":0},{"$f":"'DNSP Inputs General'!O45*'PL Tariffs'!H10","v":0},null,0,{"$f":"D11/'Charges Summary'!D$4","v":0},{"$f":"E11/'Charges Summary'!E$4","v":0},{"$f":"F11/'Charges Summary'!F$4","v":0},{"$f":"G11/'Charges Summary'!G$4","v":0},{"$f":"H11/'Charges Summary'!H$4","v":0}]
[{"$f":"'DNSP Inputs General'!A$46","v":"Mercury vapour 50 watt"},null,{"$f":"IF('PL Tariffs'!C11=0,\"\",'DNSP Inputs General'!J46*'PL Tariffs'!C11)","v":15990.730000000001},{"$f":"'DNSP Inputs General'!K46*'PL Tariffs'!D11","v":13601.082603790066},{"$f":"'DNSP Inputs General'!L46*'PL Tariffs'!E11","v":12703.118880028322},{"$f":"'DNSP Inputs General'!M46*'PL Tariffs'!F11","v":12966.830467828559},{"$f":"'DNSP Inputs General'!N46*'PL Tariffs'!G11","v":13009.868640281114},{"$f":"'DNSP Inputs General'!O46*'PL Tariffs'!H11","v":12813.99744086662},null,15990.730000000001,{"$f":"D12/'Charges Summary'!D$4","v":13292.292049441929},{"$f":"E12/'Charges Summary'!E$4","v":12288.967562766729},{"$f":"F12/'Charges Summary'!F$4","v":12306.117931051962},{"$f":"G12/'Charges Summary'!G$4","v":12066.645331516978},{"$f":"H12/'Charges Summary'!H$4","v":11615.145803637266}]
[{"$f":"'DNSP Inputs General'!A$47","v":"Mercury vapour 125 watt"},null,{"$f":"IF('PL Tariffs'!C12=0,\"\",'DNSP Inputs General'!J47*'PL Tariffs'!C12)","v":73216.109999999986},{"$f":"'DNSP Inputs General'!K47*'PL Tariffs'!D12","v":68948.436462441416},{"$f":"'DNSP Inputs General'!L47*'PL Tariffs'!E12","v":71298.005685845434},{"$f":"'DNSP Inputs General'!M47*'PL Tariffs'!F12","v":80578.082503341429},{"$f":"'DNSP Inputs General'!N47*'PL Tariffs'!G12","v":89510.108376424934},{"$f":"'DNSP Inputs General'!O47*'PL Tariffs'!H12","v":97611.251309559244},null,73216.109999999986,{"$f":"D13/'Charges Summary'!D$4","v":67383.073870588487},{"$f":"E13/'Charges Summary'!E$4","v":68973.524331952009},{"$f":"F13/'Charges Summary'!F$4","v":76472.302804018196},{"$f":"G13/'Charges Summary'!G$4","v":83020.571631277315},{"$f":"H13/'Charges Summary'!H$4","v":88478.940414033044}]
[{"$f":"'DNSP Inputs General'!A$48","v":"Mercury vapour 250 watt"},null,{"$f":"IF('PL Tariffs'!C13=0,\"\",'DNSP Inputs General'!J48*'PL Tariffs'!C13)","v":19208.000000000004},{"$f":"'DNSP Inputs General'!K48*'PL Tariffs'!D13","v":15023.177510055111},{"$f":"'DNSP Inputs General'!L48*'PL Tariffs'!E13","v":11607.513028668487},{"$f":"'DNSP Inputs General'!M48*'PL Tariffs'!F13","v":9469.099081191478},{"$f":"'DNSP Inputs General'!N48*'PL Tariffs'!G13","v":7670.6255464058249},{"$f":"'DNSP Inputs General'!O48*'PL Tariffs'!H13","v":6149.5683705674837},null,19208.000000000004,{"$f":"D14/'Charges Summary'!D$4","v":14682.100593861125},{"$f":"E14/'Charges Summary'!E$4","v":11229.081018675093},{"$f":"F14/'Charges Summary'!F$4","v":8986.6101267437953},{"$f":"G14/'Charges Summary'!G$4","v":7114.5005763373129},{"$f":"H14/'Charges Summary'!H$4","v":5574.2272138885828}]
[{"$f":"'DNSP Inputs General'!A$49","v":"Mercury vapour 400 watt"},null,{"$f":"IF('PL Tariffs'!C14=0,\"\",'DNSP Inputs General'!J49*'PL Tariffs'!C14)","v":7387.92},{"$f":"'DNSP Inputs General'!K49*'PL Tariffs'!D14","v":6692.6045238816414},{"$f":"'DNSP Inputs General'!L49*'PL Tariffs'!E14","v":5989.7943306264369},{"$f":"'DNSP Inputs General'!M49*'PL Tariffs'!F14","v":5660.0563936474909},{"$f":"'DNSP Inputs General'!N49*'PL Tariffs'!G14","v":5311.0727052201546},{"$f":"'DNSP Inputs General'!O49*'PL Tariffs'!H14","v":4932.1407907989624},null,7387.92,{"$f":"D15/'Charges Summary'!D$4","v":6540.6597764549633},{"$f":"E15/'Charges Summary'!E$4","v":5794.5130587133599},{"$f":"F15/'Charges Summary'!F$4","v":5371.6535933314262},{"$f":"G15/'Charges Summary'!G$4","v":4926.0167366614742},{"$f":"H15/'Charges Summary'!H$4","v":4470.6996917678762}]
[{"$f":"'DNSP Inputs General'!A$50","v":"Mercury vapour 700 watt"},null,{"$f":"IF('PL Tariffs'!C15=0,\"\",'DNSP Inputs General'!J50*'PL Tariffs'!C15)","v":0},{"$f":"'DNSP Inputs General'!K50*'PL Tariffs'!D15","v":0},{"$f":"'DNSP Inputs General'!L50*'PL Tariffs'!E15","v":0},{"$f":"'DNSP Inputs General'!M50*'PL Tariffs'!F15","v":0},{"$f":"'DNSP Inputs General'!N50*'PL Tariffs'!G15","v":0},{"$f":"'DNSP Inputs General'!O50*'PL Tariffs'!H15","v":0},null,0,{"$f":"D16/'Charges Summary'!D$4","v":0},{"$f":"E16/'Charges Summary'!E$4","v":0},{"$f":"F16/'Charges Summary'!F$4","v":0},{"$f":"G16/'Charges Summary'!G$4","v":0},{"$f":"H16/'Charges Summary'!H$4","v":0}]
[{"$f":"'DNSP Inputs General'!A$51","v":"Sodium low pressure 90 watt"},null,{"$f":"IF('PL Tariffs'!C16=0,\"\",'DNSP Inputs General'!J51*'PL Tariffs'!C16)","v":0},{"$f":"'DNSP Inputs General'!K51*'PL Tariffs'!D16","v":0},{"$f":"'DNSP Inputs General'!L51*'PL Tariffs'!E16","v":0},{"$f":"'DNSP Inputs General'!M51*'PL Tariffs'!F16","v":0},{"$f":"'DNSP Inputs General'!N51*'PL Tariffs'!G16","v":0},{"$f":"'DNSP Inputs General'!O51*'PL Tariffs'!H16","v":0},null,0,{"$f":"D17/'Charges Summary'!D$4","v":0},{"$f":"E17/'Charges Summary'!E$4","v":0},{"$f":"F17/'Charges Summary'!F$4","v":0},{"$f":"G17/'Charges Summary'!G$4","v":0},{"$f":"H17/'Charges Summary'!H$4","v":0}]
[{"$f":"'DNSP Inputs General'!A$52","v":"Sodium low pressure 180 watt"},null,{"$f":"IF('PL Tariffs'!C17=0,\"\",'DNSP Inputs General'!J52*'PL Tariffs'!C17)","v":0},{"$f":"'DNSP Inputs General'!K52*'PL Tariffs'!D17","v":0},{"$f":"'DNSP Inputs General'!L52*'PL Tariffs'!E17","v":0},{"$f":"'DNSP Inputs General'!M52*'PL Tariffs'!F17","v":0},{"$f":"'DNSP Inputs General'!N52*'PL Tariffs'!G17","v":0},{"$f":"'DNSP Inputs General'!O52*'PL Tariffs'!H17","v":0},null,0,{"$f":"D18/'Charges Summary'!D$4","v":0},{"$f":"E18/'Charges Summary'!E$4","v":0},{"$f":"F18/'Charges Summary'!F$4","v":0},{"$f":"G18/'Charges Summary'!G$4","v":0},{"$f":"H18/'Charges Summary'!H$4","v":0}]
[{"$f":"'DNSP Inputs General'!A$53","v":"Sodium high pressure 400 watt"},null,{"$f":"IF('PL Tariffs'!C18=0,\"\",'DNSP Inputs General'!J53*'PL Tariffs'!C18)","v":91245.60000000002},{"$f":"'DNSP Inputs General'!K53*'PL Tariffs'!D18","v":93137.748683542784},{"$f":"'DNSP Inputs General'!L53*'PL Tariffs'!E18","v":93923.321945073927},{"$f":"'DNSP Inputs General'!M53*'PL Tariffs'!F18","v":100003.05172211977},{"$f":"'DNSP Inputs General'!N53*'PL Tariffs'!G18","v":105731.81866827846},{"$f":"'DNSP Inputs General'!O53*'PL Tariffs'!H18","v":110634.32280992973},null,91245.60000000002,{"$f":"D19/'Charges Summary'!D$4","v":91023.20693090948},{"$f":"E19/'Charges Summary'!E$4","v":90861.202486655529},{"$f":"F19/'Charges Summary'!F$4","v":94907.491156825534},{"$f":"G19/'Charges Summary'!G$4","v":98066.198160999586},{"$f":"H19/'Charges Summary'!H$4","v":100283.5997317866}]
[{"$f":"'DNSP Inputs General'!A$54","v":"Incandescent 100 watt"},null,{"$f":"IF('PL Tariffs'!C19=0,\"\",'DNSP Inputs General'!J54*'PL Tariffs'!C19)","v":0},{"$f":"'DNSP Inputs General'!K54*'PL Tariffs'!D19","v":0},{"$f":"'DNSP Inputs General'!L54*'PL Tariffs'!E19","v":0},{"$f":"'DNSP Inputs General'!M54*'PL Tariffs'!F19","v":0},{"$f":"'DNSP Inputs General'!N54*'PL Tariffs'!G19","v":0},{"$f":"'DNSP Inputs General'!O54*'PL Tariffs'!H19","v":0},null,0,{"$f":"D20/'Charges Summary'!D$4","v":0},{"$f":"E20/'Charges Summary'!E$4","v":0},{"$f":"F20/'Charges Summary'!F$4","v":0},{"$f":"G20/'Charges Summary'!G$4","v":0},{"$f":"H20/'Charges Summary'!H$4","v":0}]
[{"$f":"'DNSP Inputs General'!A$55","v":"Incandescent 150 watt"},null,{"$f":"IF('PL Tariffs'!C20=0,\"\",'DNSP Inputs General'!J55*'PL Tariffs'!C20)","v":0},{"$f":"'DNSP Inputs General'!K55*'PL Tariffs'!D20","v":0},{"$f":"'DNSP Inputs General'!L55*'PL Tariffs'!E20","v":0},{"$f":"'DNSP Inputs General'!M55*'PL Tariffs'!F20","v":0},{"$f":"'DNSP Inputs General'!N55*'PL Tariffs'!G20","v":0},{"$f":"'DNSP Inputs General'!O55*'PL Tariffs'!H20","v":0},null,0,{"$f":"D21/'Charges Summary'!D$4","v":0},{"$f":"E21/'Charges Summary'!E$4","v":0},{"$f":"F21/'Charges Summary'!F$4","v":0},{"$f":"G21/'Charges Summary'!G$4","v":0},{"$f":"H21/'Charges Summary'!H$4","v":0}]
[{"$f":"'DNSP Inputs General'!A$56","v":"Metal halide 250 watt"},null,{"$f":"IF('PL Tariffs'!C21=0,\"\",'DNSP Inputs General'!J56*'PL Tariffs'!C21)","v":42741.36},{"$f":"'DNSP Inputs General'!K56*'PL Tariffs'!D21","v":44347.721908551051},{"$f":"'DNSP Inputs General'!L56*'PL Tariffs'!E21","v":45459.870892062674},{"$f":"'DNSP Inputs General'!M56*'PL Tariffs'!F21","v":49201.368268222024},{"$f":"'DNSP Inputs General'!N56*'PL Tariffs'!G21","v":52878.46060741305},{"$f":"'DNSP Inputs General'!O56*'PL Tariffs'!H21","v":56243.476435572229},null,42741.36,{"$f":"D22/'Charges Summary'!D$4","v":43340.878701202062},{"$f":"E22/'Charges Summary'!E$4","v":43977.773023791153},{"$f":"F22/'Charges Summary'!F$4","v":46694.359256109885},{"$f":"G22/'Charges Summary'!G$4","v":49044.740378905},{"$f":"H22/'Charges Summary'!H$4","v":50981.450739108826}]
[{"$f":"'DNSP Inputs General'!A$57","v":"Metal halide 400 watt"},null,{"$f":"IF('PL Tariffs'!C22=0,\"\",'DNSP Inputs General'!J57*'PL Tariffs'!C22)","v":0},{"$f":"'DNSP Inputs General'!K57*'PL Tariffs'!D22","v":0},{"$f":"'DNSP Inputs General'!L57*'PL Tariffs'!E22","v":0},{"$f":"'DNSP Inputs General'!M57*'PL Tariffs'!F22","v":0},{"$f":"'DNSP Inputs General'!N57*'PL Tariffs'!G22","v":0},{"$f":"'DNSP Inputs General'!O57*'PL Tariffs'!H22","v":0},null,0,{"$f":"D23/'Charges Summary'!D$4","v":0},{"$f":"E23/'Charges Summary'!E$4","v":0},{"$f":"F23/'Charges Summary'!F$4","v":0},{"$f":"G23/'Charges Summary'!G$4","v":0},{"$f":"H23/'Charges Summary'!H$4","v":0}]
[{"$f":"'DNSP Inputs General'!A$58","v":"Metal halide 70 watt"},null,{"$f":"IF('PL Tariffs'!C23=0,\"\",'DNSP Inputs General'!J58*'PL Tariffs'!C23)","v":""},{"$f":"'DNSP Inputs General'!K58*'PL Tariffs'!D23","v":831.83616778087594},{"$f":"'DNSP Inputs General'!L58*'PL Tariffs'!E23","v":845.06028294960231},{"$f":"'DNSP Inputs General'!M58*'PL Tariffs'!F23","v":938.26208825978745},{"$f":"'DNSP Inputs General'!N58*'PL Tariffs'!G23","v":1023.9441154027289},{"$f":"'DNSP Inputs General'!O58*'PL Tariffs'!H23","v":1096.9857425362877},null,{"$f":"C24","v":""},{"$f":"D24/'Charges Summary'!D$4","v":812.95067470223603},{"$f":"E24/'Charges Summary'!E$4","v":817.50934584082108},{"$f":"F24/'Charges Summary'!F$4","v":890.45383426637784},{"$f":"G24/'Charges Summary'!G$4","v":949.70755058996849},{"$f":"H24/'Charges Summary'!H$4","v":994.35397914427438}]
[{"$f":"'DNSP Inputs General'!A$59","v":"Metal halide 150 watt"},null,{"$f":"IF('PL Tariffs'!C24=0,\"\",'DNSP Inputs General'!J59*'PL Tariffs'!C24)","v":""},{"$f":"'DNSP Inputs General'!K59*'PL Tariffs'!D24","v":6148.2230876988824},{"$f":"'DNSP Inputs General'!L59*'PL Tariffs'!E24","v":6297.1119557295524},{"$f":"'DNSP Inputs General'!M59*'PL Tariffs'!F24","v":6804.8226107695073},{"$f":"'DNSP Inputs General'!N59*'PL Tariffs'!G24","v":7303.8356583422328},{"$f":"'DNSP Inputs General'!O59*'PL Tariffs'!H24","v":7761.2263475025256},null,"",{"$f":"D25/'Charges Summary'!D$4","v":6008.6376391863123},{"$f":"E25/'Charges Summary'!E$4","v":6091.8114121355447},{"$f":"F25/'Charges Summary'!F$4","v":6458.089334612996},{"$f":"G25/'Charges Summary'!G$4","v":6774.3031759772002},{"$f":"H25/'Charges Summary'!H$4","v":7035.1017359947418}]
[]
[]
[]
[]
[]
[{"$f":"'DNSP Inputs General'!A$67","v":"Energy Efficient Lights"}]
[{"$f":"'DNSP Inputs General'!A68","v":"T5 2X14W"},null,{"$f":"IF('PL Tariffs'!C31=0,\"\",'DNSP Inputs General'!J68*'PL Tariffs'!C31)","v":358450.64999999991},{"$f":"'DNSP Inputs General'!K68*'PL Tariffs'!D31","v":414680.13194812939},{"$f":"'DNSP Inputs General'!L68*'PL Tariffs'!E31","v":384066.70181051048},{"$f":"'DNSP Inputs General'!M68*'PL Tariffs'!F31","v":394642.51870976645},{"$f":"'DNSP Inputs General'!N68*'PL Tariffs'!G31","v":399130.41240862838},{"$f":"'DNSP Inputs General'!O68*'PL Tariffs'!H31","v":398423.86265075981},null,{"$f":"C32","v":358450.64999999991},{"$f":"D32/'Charges Summary'!D$4","v":405265.49110286759},{"$f":"E32/'Charges Summary'!E$4","v":371545.2311407199},{"$f":"F32/'Charges Summary'!F$4","v":374533.88381216687},{"$f":"G32/'Charges Summary'!G$4","v":370193.21722013596},{"$f":"H32/'Charges Summary'!H$4","v":361148.13333566149}]
[{"$f":"'DNSP Inputs General'!A$69","v":"T5 2X24W"},null,{"$f":"IF('PL Tariffs'!C32=0,\"\",'DNSP Inputs General'!J69*'PL Tariffs'!C32)","v":""},{"$f":"'DNSP Inputs General'!K69*'PL Tariffs'!D32","v":56612.800415719961},{"$f":"'DNSP Inputs General'!L69*'PL Tariffs'!E32","v":52433.405559545878},{"$f":"'DNSP Inputs General'!M69*'PL Tariffs'!F32","v":53877.233139463948},{"$f":"'DNSP Inputs General'!N69*'PL Tariffs'!G32","v":54489.927625372955},{"$f":"'DNSP Inputs General'!O69*'PL Tariffs'!H32","v":54393.468312894991},null,{"$f":"C33","v":""},{"$f":"D33/'Charges Summary'!D$4","v":55327.498463454838},{"$f":"E33/'Charges Summary'!E$4","v":50723.954188895652},{"$f":"F33/'Charges Summary'!F$4","v":51131.969871744179},{"$f":"G33/'Charges Summary'!G$4","v":50539.375067909772},{"$f":"H33/'Charges Summary'!H$4","v":49304.525627958181}]
[{"$f":"'DNSP Inputs General'!A$70","v":"CF32"},null,{"$f":"IF('PL Tariffs'!C33=0,\"\",'DNSP Inputs General'!J70*'PL Tariffs'!C33)","v":""},{"$f":"'DNSP Inputs General'!K70*'PL Tariffs'!D33","v":115457.65530221489},{"$f":"'DNSP Inputs General'!L70*'PL Tariffs'!E33","v":106934.08594806564},{"$f":"'DNSP Inputs General'!M70*'PL Tariffs'!F33","v":109878.6664283438},{"$f":"'DNSP Inputs General'!N70*'PL Tariffs'!G33","v":111128.21190640157},{"$f":"'DNSP Inputs General'!O70*'PL Tariffs'!H33","v":110931.49021150239},null,"",{"$f":"D34/'Charges Summary'!D$4","v":112836.37621560952},{"$f":"E34/'Charges Summary'!E$4","v":103447.78522351028},{"$f":"F34/'Charges Summary'!F$4","v":104279.90329084302},{"$f":"G34/'Charges Summary'!G$4","v":103071.34964056294},{"$f":"H34/'Charges Summary'!H$4","v":100552.96475337981}]
[{"$f":"'DNSP Inputs General'!A$71","v":"CF42"},null,{"$f":"IF('PL Tariffs'!C34=0,\"\",'DNSP Inputs General'!J71*'PL Tariffs'!C34)","v":""},{"$f":"'DNSP Inputs General'!K71*'PL Tariffs'!D34","v":168757.30452881198},{"$f":"'DNSP Inputs General'!L71*'PL Tariffs'!E34","v":156298.93106361813},{"$f":"'DNSP Inputs General'!M71*'PL Tariffs'!F34","v":160602.84199545885},{"$f":"'DNSP Inputs General'!N71*'PL Tariffs'!G34","v":162429.22523710044},{"$f":"'DNSP Inputs General'!O71*'PL Tariffs'!H34","v":162141.68931852814},null,"",{"$f":"D35/'Charges Summary'!D$4","v":164925.94322223275},{"$f":"E35/'Charges Summary'!E$4","v":151203.22119914179},{"$f":"F35/'Charges Summary'!F$4","v":152419.47664556699},{"$f":"G35/'Charges Summary'!G$4","v":150653.00861998767},{"$f":"H35/'Charges Summary'!H$4","v":146972.04139252508}]
[{"$f":"'DNSP Inputs General'!A$72","v":"Category P LED 18 Watt"},null,{"$f":"IF('PL Tariffs'!C35=0,\"\",'DNSP Inputs General'!J72*'PL Tariffs'!C35)","v":""},{"$f":"'DNSP Inputs General'!K72*'PL Tariffs'!D35","v":979766.23900753923},{"$f":"'DNSP Inputs General'!L72*'PL Tariffs'!E35","v":1266455.924439142},{"$f":"'DNSP Inputs General'!M72*'PL Tariffs'!F35","v":1455723.1197997539},{"$f":"'DNSP Inputs General'!N72*'PL Tariffs'!G35","v":1624944.9218263498},{"$f":"'DNSP Inputs General'!O72*'PL Tariffs'!H35","v":1776869.0390479651},null,"",{"$f":"D36/'Charges Summary'!D$4","v":957522.2332259391},{"$f":"E36/'Charges Summary'!E$4","v":1225166.5061227602},{"$f":"F36/'Charges Summary'!F$4","v":1381548.1301819324},{"$f":"G36/'Charges Summary'!G$4","v":1507135.4367267822},{"$f":"H36/'Charges Summary'!H$4","v":1610628.7719935074}]
[{"$f":"'DNSP Inputs General'!A$73","v":"Category P LED 47 Watt"},null,{"$f":"IF('PL Tariffs'!C36=0,\"\",'DNSP Inputs General'!J73*'PL Tariffs'!C36)","v":""},{"$f":"'DNSP Inputs General'!K73*'PL Tariffs'!D36","v":0},{"$f":"'DNSP Inputs General'!L73*'PL Tariffs'!E36","v":0},{"$f":"'DNSP Inputs General'!M73*'PL Tariffs'!F36","v":0},{"$f":"'DNSP Inputs General'!N73*'PL Tariffs'!G36","v":0},{"$f":"'DNSP Inputs General'!O73*'PL Tariffs'!H36","v":0},null,"",{"$f":"D37/'Charges Summary'!D$4","v":0},{"$f":"E37/'Charges Summary'!E$4","v":0},{"$f":"F37/'Charges Summary'!F$4","v":0},{"$f":"G37/'Charges Summary'!G$4","v":0},{"$f":"H37/'Charges Summary'!H$4","v":0}]
[]
["Total Revenue",null,{"$f":"IF(SUM(C7:C38)=0,\"\",SUM(C7:C38))","v":7980700.8900000006},{"$f":"SUM(D7:D38)","v":8787102.4143802933},{"$f":"SUM(E7:E38)","v":8656379.0650295131},{"$f":"SUM(F7:F38)","v":9259971.3264383152},{"$f":"SUM(G7:G38)","v":9804393.8269625902},{"$f":"SUM(H7:H38)","v":10271345.899356838},null,{"$f":"IF(SUM(J7:J38)=0,\"\",SUM(J7:J38))","v":7980700.8900000006},{"$f":"SUM(K7:K38)","v":8587605.4842686988},{"$f":"SUM(L7:L38)","v":8374160.9084999375},{"$f":"SUM(M7:M38)","v":8788138.2782042753},{"$f":"SUM(N7:N38)","v":9093569.3719591368},{"$f":"SUM(O7:O38)","v":9310379.58850668}]
[]
[]
["Public Lighting - O & M",null,null,"Forecast O & M - Nominal ",null,null,null,null,null,null,"Forecast O & M - Real 2015 $ "]
[null,null,null,{"$f":"D$2","v":2016},2017,2018,2019,2020,null,null,{"$f":"K$2","v":2016},2017,2018,2019,2020]
[]
["Unit cost"]
[{"$f":"'DNSP Inputs General'!A$41","v":"Mercury vapour 80 watt"},null,null,{"$f":"SUM('Charges Summary'!D25,'Charges Summary'!D8)","v":24.996265856959671},{"$f":"SUM('Charges Summary'!E25,'Charges Summary'!E8)","v":25.41121003607234},{"$f":"SUM('Charges Summary'!F25,'Charges Summary'!F8)","v":26.116104829187027},{"$f":"SUM('Charges Summary'!G25,'Charges Summary'!G8)","v":26.964310289062233},{"$f":"SUM('Charges Summary'!H25,'Charges Summary'!H8)","v":27.849461770128176}]
[{"$f":"'DNSP Inputs General'!A$42","v":"Sodium high pressure 150 watt"},null,null,{"$f":"SUM('Charges Summary'!D49,'Charges Summary'!D8)","v":67.303120654019096},{"$f":"SUM('Charges Summary'!E49,'Charges Summary'!E8)","v":68.269111783333088},{"$f":"SUM('Charges Summary'!F49,'Charges Summary'!F8)","v":70.097195661575029},{"$f":"SUM('Charges Summary'!G49,'Charges Summary'!G8)","v":72.297858654322042},{"$f":"SUM('Charges Summary'!H49,'Charges Summary'!H8)","v":74.579925907109029}]
[{"$f":"'DNSP Inputs General'!A$43","v":"Sodium high pressure 250 watt"},null,null,{"$f":"SUM('Charges Summary'!D65,'Charges Summary'!D8)","v":67.285035297213128},{"$f":"SUM('Charges Summary'!E65,'Charges Summary'!E8)","v":68.251227304208655},{"$f":"SUM('Charges Summary'!F65,'Charges Summary'!F8)","v":70.0788514722814},{"$f":"SUM('Charges Summary'!G65,'Charges Summary'!G8)","v":72.279094050729157},{"$f":"SUM('Charges Summary'!H65,'Charges Summary'!H8)","v":74.560841781574297}]
[]
[{"$f":"'DNSP Inputs General'!A$40","v":"Existing Lights"}]
[{"$f":"'DNSP Inputs General'!A$41","v":"Mercury vapour 80 watt"},null,null,{"$f":"D46*'DNSP Inputs General'!K41","v":1498323.8383458985},{"$f":"E46*'DNSP Inputs General'!L41","v":1242459.669177159},{"$f":"F46*'DNSP Inputs General'!M41","v":1149232.4146778311},{"$f":"G46*'DNSP Inputs General'!N41","v":1067901.7282121747},{"$f":"H46*'DNSP Inputs General'!O41","v":992661.75295224949},null,null,{"$f":"D51/'Charges Summary'!D$4","v":1464306.8220455246},{"$f":"E51/'Charges Summary'!E$4","v":1201952.584775775},{"$f":"F51/'Charges Summary'!F$4","v":1090674.3679807929},{"$f":"G51/'Charges Summary'!G$4","v":990478.21000688546},{"$f":"H51/'Charges Summary'!H$4","v":899790.33064757322}]
[{"$f":"'DNSP Inputs General'!A$42","v":"Sodium high pressure 150 watt"},null,null,{"$f":"D47*'DNSP Inputs General'!K42","v":1986497.8535379774},{"$f":"E47*'DNSP Inputs General'!L42","v":2104990.3466866771},{"$f":"F47*'DNSP Inputs General'!M42","v":2257872.7252750346},{"$f":"G47*'DNSP Inputs General'!N42","v":2432748.4563170727},{"$f":"H47*'DNSP Inputs General'!O42","v":2621601.4974550726},null,null,{"$f":"D52/'Charges Summary'!D$4","v":1941397.6367924043},{"$f":"E52/'Charges Summary'!E$4","v":2036362.7495480066},{"$f":"F52/'Charges Summary'!F$4","v":2142824.9640093646},{"$f":"G52/'Charges Summary'!G$4","v":2256372.7286441871},{"$f":"H52/'Charges Summary'!H$4","v":2376329.7731636725}]
[{"$f":"'DNSP Inputs General'!A$43","v":"Sodium high pressure 250 watt"},null,null,{"$f":"D48*'DNSP Inputs General'!K43","v":912571.48591858614},{"$f":"E48*'DNSP Inputs General'!L43","v":957061.08795626019},{"$f":"F48*'DNSP Inputs General'!M43","v":1016007.5913855489},{"$f":"G48*'DNSP Inputs General'!N43","v":1083436.4973930737},{"$f":"H48*'DNSP Inputs General'!O43","v":1155532.9851154487},null,null,{"$f":"D53/'Charges Summary'!D$4","v":891853.02818783326},{"$f":"E53/'Charges Summary'!E$4","v":925858.66325880564},{"$f":"F53/'Charges Summary'!F$4","v":964237.88908596768},{"$f":"G53/'Charges Summary'!G$4","v":1004886.6990697572},{"$f":"H53/'Charges Summary'!H$4","v":1047423.6603343998}]
[{"$f":"'DNSP Inputs General'!A$44","v":"Fluorescent 20 watt"},null,null,{"$f":"IF('DNSP Inputs General'!$B44='DNSP Inputs General'!$A$41,D$46,IF('DNSP Inputs General'!$B44='DNSP Inputs General'!$A$42,D$47,D$48))*'DNSP Inputs General'!$D44*'DNSP Inputs General'!K44","v":0},{"$f":"IF('DNSP Inputs General'!$B44='DNSP Inputs General'!$A$41,E$46,IF('DNSP Inputs General'!$B44='DNSP Inputs General'!$A$42,E$47,E$48))*'DNSP Inputs General'!$D44*'DNSP Inputs General'!L44","v":0},{"$f":"IF('DNSP Inputs General'!$B44='DNSP Inputs General'!$A$41,F$46,IF('DNSP Inputs General'!$B44='DNSP Inputs General'!$A$42,F$47,F$48))*'DNSP Inputs General'!$D44*'DNSP Inputs General'!M44","v":0},{"$f":"IF('DNSP Inputs General'!$B44='DNSP Inputs General'!$A$41,G$46,IF('DNSP Inputs General'!$B44='DNSP Inputs General'!$A$42,G$47,G$48))*'DNSP Inputs General'!$D44*'DNSP Inputs General'!N44","v":0},{"$f":"IF('DNSP Inputs General'!$B44='DNSP Inputs General'!$A$41,H$46,IF('DNSP Inputs General'!$B44='DNSP Inputs General'!$A$42,H$47,H$48))*'DNSP Inputs General'!$D44*'DNSP Inputs General'!O44","v":0},null,null,{"$f":"D54/'Charges Summary'!D$4","v":0},{"$f":"E54/'Charges Summary'!E$4","v":0},{"$f":"F54/'Charges Summary'!F$4","v":0},{"$f":"G54/'Charges Summary'!G$4","v":0},{"$f":"H54/'Charges Summary'!H$4","v":0}]
[{"$f":"'DNSP Inputs General'!A$45","v":"Fluorescent 40 watt"},null,null,{"$f":"IF('DNSP Inputs General'!$B45='DNSP Inputs General'!$A$41,D$46,IF('DNSP Inputs General'!$B45='DNSP Inputs General'!$A$42,D$47,D$48))*'DNSP Inputs General'!$D45*'DNSP Inputs General'!K45","v":0},{"$f":"IF('DNSP Inputs General'!$B45='DNSP Inputs General'!$A$41,E$46,IF('DNSP Inputs General'!$B45='DNSP Inputs General'!$A$42,E$47,E$48))*'DNSP Inputs General'!$D45*'DNSP Inputs General'!L45","v":0},{"$f":"IF('DNSP Inputs General'!$B45='DNSP Inputs General'!$A$41,F$46,IF('DNSP Inputs General'!$B45='DNSP Inputs General'!$A$42,F$47,F$48))*'DNSP Inputs General'!$D45*'DNSP Inputs General'!M45","v":0},{"$f":"IF('DNSP Inputs General'!$B45='DNSP Inputs General'!$A$41,G$46,IF('DNSP Inputs General'!$B45='DNSP Inputs General'!$A$42,G$47,G$48))*'DNSP Inputs General'!$D45*'DNSP Inputs General'!N45","v":0},{"$f":"IF('DNSP Inputs General'!$B45='DNSP Inputs General'!$A$41,H$46,IF('DNSP Inputs General'!$B45='DNSP Inputs General'!$A$42,H$47,H$48))*'DNSP Inputs General'!$D45*'DNSP Inputs General'!O45","v":0},null,null,{"$f":"D55/'Charges Summary'!D$4","v":0},{"$f":"E55/'Charges Summary'!E$4","v":0},{"$f":"F55/'Charges Summary'!F$4","v":0},{"$f":"G55/'Charges Summary'!G$4","v":0},{"$f":"H55/'Charges Summary'!H$4","v":0}]
[{"$f":"'DNSP Inputs General'!A$46","v":"Mercury vapour 50 watt"},null,null,{"$f":"IF('DNSP Inputs General'!$B46='DNSP Inputs General'!$A$41,D$46,IF('DNSP Inputs General'!$B46='DNSP Inputs General'!$A$42,D$47,D$48))*'DNSP Inputs General'!$D46*'DNSP Inputs General'!K46","v":7070.2835892507665},{"$f":"IF('DNSP Inputs General'!$B46='DNSP Inputs General'!$A$41,E$46,IF('DNSP Inputs General'!$B46='DNSP Inputs General'!$A$42,E$47,E$48))*'DNSP Inputs General'!$D46*'DNSP Inputs General'!L46","v":6740.2221239667833},{"$f":"IF('DNSP Inputs General'!$B46='DNSP Inputs General'!$A$41,F$46,IF('DNSP Inputs General'!$B46='DNSP Inputs General'!$A$42,F$47,F$48))*'DNSP Inputs General'!$D46*'DNSP Inputs General'!M46","v":6495.9762849696353},{"$f":"IF('DNSP Inputs General'!$B46='DNSP Inputs General'!$A$41,G$46,IF('DNSP Inputs General'!$B46='DNSP Inputs General'!$A$42,G$47,G$48))*'DNSP Inputs General'!$D46*'DNSP Inputs General'!N46","v":6289.4476718659325},{"$f":"IF('DNSP Inputs General'!$B46='DNSP Inputs General'!$A$41,H$46,IF('DNSP Inputs General'!$B46='DNSP Inputs General'!$A$42,H$47,H$48))*'DNSP Inputs General'!$D46*'DNSP Inputs General'!O46","v":6091.5408758061876},null,null,{"$f":"D56/'Charges Summary'!D$4","v":6909.7642502744047},{"$f":"E56/'Charges Summary'!E$4","v":6520.4751549239854},{"$f":"F56/'Charges Summary'!F$4","v":6164.9799801493073},{"$f":"G56/'Charges Summary'!G$4","v":5833.4589292134096},{"$f":"H56/'Charges Summary'!H$4","v":5521.6286539635803}]
[{"$f":"'DNSP Inputs General'!A$47","v":"Mercury vapour 125 watt"},null,null,{"$f":"IF('DNSP Inputs General'!$B47='DNSP Inputs General'!$A$41,D$46,IF('DNSP Inputs General'!$B47='DNSP Inputs General'!$A$42,D$47,D$48))*'DNSP Inputs General'!$D47*'DNSP Inputs General'!K47","v":35841.632098393151},{"$f":"IF('DNSP Inputs General'!$B47='DNSP Inputs General'!$A$41,E$46,IF('DNSP Inputs General'!$B47='DNSP Inputs General'!$A$42,E$47,E$48))*'DNSP Inputs General'!$D47*'DNSP Inputs General'!L47","v":37830.425729068942},{"$f":"IF('DNSP Inputs General'!$B47='DNSP Inputs General'!$A$41,F$46,IF('DNSP Inputs General'!$B47='DNSP Inputs General'!$A$42,F$47,F$48))*'DNSP Inputs General'!$D47*'DNSP Inputs General'!M47","v":40367.097752122252},{"$f":"IF('DNSP Inputs General'!$B47='DNSP Inputs General'!$A$41,G$46,IF('DNSP Inputs General'!$B47='DNSP Inputs General'!$A$42,G$47,G$48))*'DNSP Inputs General'!$D47*'DNSP Inputs General'!N47","v":43272.469407839351},{"$f":"IF('DNSP Inputs General'!$B47='DNSP Inputs General'!$A$41,H$46,IF('DNSP Inputs General'!$B47='DNSP Inputs General'!$A$42,H$47,H$48))*'DNSP Inputs General'!$D47*'DNSP Inputs General'!O47","v":46402.610117156153},null,null,{"$f":"D57/'Charges Summary'!D$4","v":35027.905885060638},{"$f":"E57/'Charges Summary'!E$4","v":36597.065575847599},{"$f":"F57/'Charges Summary'!F$4","v":38310.230607580961},{"$f":"G57/'Charges Summary'!G$4","v":40135.189324404535},{"$f":"H57/'Charges Summary'!H$4","v":42061.275934174941}]
[{"$f":"'DNSP Inputs General'!A$48","v":"Mercury vapour 250 watt"},null,null,{"$f":"IF('DNSP Inputs General'!$B48='DNSP Inputs General'!$A$41,D$46,IF('DNSP Inputs General'!$B48='DNSP Inputs General'!$A$42,D$47,D$48))*'DNSP Inputs General'!$D48*'DNSP Inputs General'!K48","v":11008.059758913978},{"$f":"IF('DNSP Inputs General'!$B48='DNSP Inputs General'!$A$41,E$46,IF('DNSP Inputs General'!$B48='DNSP Inputs General'!$A$42,E$47,E$48))*'DNSP Inputs General'!$D48*'DNSP Inputs General'!L48","v":8584.6665280688849},{"$f":"IF('DNSP Inputs General'!$B48='DNSP Inputs General'!$A$41,F$46,IF('DNSP Inputs General'!$B48='DNSP Inputs General'!$A$42,F$47,F$48))*'DNSP Inputs General'!$D48*'DNSP Inputs General'!M48","v":6776.736669685265},{"$f":"IF('DNSP Inputs General'!$B48='DNSP Inputs General'!$A$41,G$46,IF('DNSP Inputs General'!$B48='DNSP Inputs General'!$A$42,G$47,G$48))*'DNSP Inputs General'!$D48*'DNSP Inputs General'!N48","v":5373.6206648409016},{"$f":"IF('DNSP Inputs General'!$B48='DNSP Inputs General'!$A$41,H$46,IF('DNSP Inputs General'!$B48='DNSP Inputs General'!$A$42,H$47,H$48))*'DNSP Inputs General'!$D48*'DNSP Inputs General'!O48","v":4261.7284895773701},null,null,{"$f":"D58/'Charges Summary'!D$4","v":10758.139589007411},{"$f":"E58/'Charges Summary'!E$4","v":8304.7863675800381},{"$f":"F58/'Charges Summary'!F$4","v":6431.4344859940693},{"$f":"G58/'Charges Summary'!G$4","v":4984.0299315539087},{"$f":"H58/'Charges Summary'!H$4","v":3863.0098070792351}]
[{"$f":"'DNSP Inputs General'!A$49","v":"Mercury vapour 400 watt"},null,null,{"$f":"IF('DNSP Inputs General'!$B49='DNSP Inputs General'!$A$41,D$46,IF('DNSP Inputs General'!$B49='DNSP Inputs General'!$A$42,D$47,D$48))*'DNSP Inputs General'!$D49*'DNSP Inputs General'!K49","v":4903.9286457447224},{"$f":"IF('DNSP Inputs General'!$B49='DNSP Inputs General'!$A$41,E$46,IF('DNSP Inputs General'!$B49='DNSP Inputs General'!$A$42,E$47,E$48))*'DNSP Inputs General'!$D49*'DNSP Inputs General'!L49","v":4429.9228243936814},{"$f":"IF('DNSP Inputs General'!$B49='DNSP Inputs General'!$A$41,F$46,IF('DNSP Inputs General'!$B49='DNSP Inputs General'!$A$42,F$47,F$48))*'DNSP Inputs General'!$D49*'DNSP Inputs General'!M49","v":4050.724507836826},{"$f":"IF('DNSP Inputs General'!$B49='DNSP Inputs General'!$A$41,G$46,IF('DNSP Inputs General'!$B49='DNSP Inputs General'!$A$42,G$47,G$48))*'DNSP Inputs General'!$D49*'DNSP Inputs General'!N49","v":3720.647014846938},{"$f":"IF('DNSP Inputs General'!$B49='DNSP Inputs General'!$A$41,H$46,IF('DNSP Inputs General'!$B49='DNSP Inputs General'!$A$42,H$47,H$48))*'DNSP Inputs General'!$D49*'DNSP Inputs General'!O49","v":3418.0358126199535},null,null,{"$f":"D59/'Charges Summary'!D$4","v":4792.5928874734473},{"$f":"E59/'Charges Summary'!E$4","v":4285.4970034266544},{"$f":"F59/'Charges Summary'!F$4","v":3844.32368598632},{"$f":"G59/'Charges Summary'!G$4","v":3450.8978663258267},{"$f":"H59/'Charges Summary'!H$4","v":3098.2513075131014}]
[{"$f":"'DNSP Inputs General'!A$50","v":"Mercury vapour 700 watt"},null,null,{"$f":"IF('DNSP Inputs General'!$B50='DNSP Inputs General'!$A$41,D$46,IF('DNSP Inputs General'!$B50='DNSP Inputs General'!$A$42,D$47,D$48))*'DNSP Inputs General'!$D50*'DNSP Inputs General'!K50","v":0},{"$f":"IF('DNSP Inputs General'!$B50='DNSP Inputs General'!$A$41,E$46,IF('DNSP Inputs General'!$B50='DNSP Inputs General'!$A$42,E$47,E$48))*'DNSP Inputs General'!$D50*'DNSP Inputs General'!L50","v":0},{"$f":"IF('DNSP Inputs General'!$B50='DNSP Inputs General'!$A$41,F$46,IF('DNSP Inputs General'!$B50='DNSP Inputs General'!$A$42,F$47,F$48))*'DNSP Inputs General'!$D50*'DNSP Inputs General'!M50","v":0},{"$f":"IF('DNSP Inputs General'!$B50='DNSP Inputs General'!$A$41,G$46,IF('DNSP Inputs General'!$B50='DNSP Inputs General'!$A$42,G$47,G$48))*'DNSP Inputs General'!$D50*'DNSP Inputs General'!N50","v":0},{"$f":"IF('DNSP Inputs General'!$B50='DNSP Inputs General'!$A$41,H$46,IF('DNSP Inputs General'!$B50='DNSP Inputs General'!$A$42,H$47,H$48))*'DNSP Inputs General'!$D50*'DNSP Inputs General'!O50","v":0},null,null,{"$f":"D60/'Charges Summary'!D$4","v":0},{"$f":"E60/'Charges Summary'!E$4","v":0},{"$f":"F60/'Charges Summary'!F$4","v":0},{"$f":"G60/'Charges Summary'!G$4","v":0},{"$f":"H60/'Charges Summary'!H$4","v":0}]
[{"$f":"'DNSP Inputs General'!A$51","v":"Sodium low pressure 90 watt"},null,null,{"$f":"IF('DNSP Inputs General'!$B51='DNSP Inputs General'!$A$41,D$46,IF('DNSP Inputs General'!$B51='DNSP Inputs General'!$A$42,D$47,D$48))*'DNSP Inputs General'!$D51*'DNSP Inputs General'!K51","v":0},{"$f":"IF('DNSP Inputs General'!$B51='DNSP Inputs General'!$A$41,E$46,IF('DNSP Inputs General'!$B51='DNSP Inputs General'!$A$42,E$47,E$48))*'DNSP Inputs General'!$D51*'DNSP Inputs General'!L51","v":0},{"$f":"IF('DNSP Inputs General'!$B51='DNSP Inputs General'!$A$41,F$46,IF('DNSP Inputs General'!$B51='DNSP Inputs General'!$A$42,F$47,F$48))*'DNSP Inputs General'!$D51*'DNSP Inputs General'!M51","v":0},{"$f":"IF('DNSP Inputs General'!$B51='DNSP Inputs General'!$A$41,G$46,IF('DNSP Inputs General'!$B51='DNSP Inputs General'!$A$42,G$47,G$48))*'DNSP Inputs General'!$D51*'DNSP Inputs General'!N51","v":0},{"$f":"IF('DNSP Inputs General'!$B51='DNSP Inputs General'!$A$41,H$46,IF('DNSP Inputs General'!$B51='DNSP Inputs General'!$A$42,H$47,H$48))*'DNSP Inputs General'!$D51*'DNSP Inputs General'!O51","v":0},null,null,{"$f":"D61/'Charges Summary'!D$4","v":0},{"$f":"E61/'Charges Summary'!E$4","v":0},{"$f":"F61/'Charges Summary'!F$4","v":0},{"$f":"G61/'Charges Summary'!G$4","v":0},{"$f":"H61/'Charges Summary'!H$4","v":0}]
[{"$f":"'DNSP Inputs General'!A$52","v":"Sodium low pressure 180 watt"},null,null,{"$f":"IF('DNSP Inputs General'!$B52='DNSP Inputs General'!$A$41,D$46,IF('DNSP Inputs General'!$B52='DNSP Inputs General'!$A$42,D$47,D$48))*'DNSP Inputs General'!$D52*'DNSP Inputs General'!K52","v":0},{"$f":"IF('DNSP Inputs General'!$B52='DNSP Inputs General'!$A$41,E$46,IF('DNSP Inputs General'!$B52='DNSP Inputs General'!$A$42,E$47,E$48))*'DNSP Inputs General'!$D52*'DNSP Inputs General'!L52","v":0},{"$f":"IF('DNSP Inputs General'!$B52='DNSP Inputs General'!$A$41,F$46,IF('DNSP Inputs General'!$B52='DNSP Inputs General'!$A$42,F$47,F$48))*'DNSP Inputs General'!$D52*'DNSP Inputs General'!M52","v":0},{"$f":"IF('DNSP Inputs General'!$B52='DNSP Inputs General'!$A$41,G$46,IF('DNSP Inputs General'!$B52='DNSP Inputs General'!$A$42,G$47,G$48))*'DNSP Inputs General'!$D52*'DNSP Inputs General'!N52","v":0},{"$f":"IF('DNSP Inputs General'!$B52='DNSP Inputs General'!$A$41,H$46,IF('DNSP Inputs General'!$B52='DNSP Inputs General'!$A$42,H$47,H$48))*'DNSP Inputs General'!$D52*'DNSP Inputs General'!O52","v":0},null,null,{"$f":"D62/'Charges Summary'!D$4","v":0},{"$f":"E62/'Charges Summary'!E$4","v":0},{"$f":"F62/'Charges Summary'!F$4","v":0},{"$f":"G62/'Charges Summary'!G$4","v":0},{"$f":"H62/'Charges Summary'!H$4","v":0}]
[{"$f":"'DNSP Inputs General'!A$53","v":"Sodium high pressure 400 watt"},null,null,{"$f":"IF('DNSP Inputs General'!$B53='DNSP Inputs General'!$A$41,D$46,IF('DNSP Inputs General'!$B53='DNSP Inputs General'!$A$42,D$47,D$48))*'DNSP Inputs General'!$D53*'DNSP Inputs General'!K53","v":68245.609334838358},{"$f":"IF('DNSP Inputs General'!$B53='DNSP Inputs General'!$A$41,E$46,IF('DNSP Inputs General'!$B53='DNSP Inputs General'!$A$42,E$47,E$48))*'DNSP Inputs General'!$D53*'DNSP Inputs General'!L53","v":69463.665137871969},{"$f":"IF('DNSP Inputs General'!$B53='DNSP Inputs General'!$A$41,F$46,IF('DNSP Inputs General'!$B53='DNSP Inputs General'!$A$42,F$47,F$48))*'DNSP Inputs General'!$D53*'DNSP Inputs General'!M53","v":71569.041772076205},{"$f":"IF('DNSP Inputs General'!$B53='DNSP Inputs General'!$A$41,G$46,IF('DNSP Inputs General'!$B53='DNSP Inputs General'!$A$42,G$47,G$48))*'DNSP Inputs General'!$D53*'DNSP Inputs General'!N53","v":74069.928494070788},{"$f":"IF('DNSP Inputs General'!$B53='DNSP Inputs General'!$A$41,H$46,IF('DNSP Inputs General'!$B53='DNSP Inputs General'!$A$42,H$47,H$48))*'DNSP Inputs General'!$D53*'DNSP Inputs General'!O53","v":76670.981934406474},null,null,{"$f":"D63/'Charges Summary'!D$4","v":66696.203294729552},{"$f":"E63/'Charges Summary'!E$4","v":67198.98756613821},{"$f":"F63/'Charges Summary'!F$4","v":67922.309190724176},{"$f":"G63/'Charges Summary'!G$4","v":68699.814085860227},{"$f":"H63/'Charges Summary'!H$4","v":69497.800213072449}]
[{"$f":"'DNSP Inputs General'!A$54","v":"Incandescent 100 watt"},null,null,{"$f":"IF('DNSP Inputs General'!$B54='DNSP Inputs General'!$A$41,D$46,IF('DNSP Inputs General'!$B54='DNSP Inputs General'!$A$42,D$47,D$48))*'DNSP Inputs General'!$D54*'DNSP Inputs General'!K54","v":0},{"$f":"IF('DNSP Inputs General'!$B54='DNSP Inputs General'!$A$41,E$46,IF('DNSP Inputs General'!$B54='DNSP Inputs General'!$A$42,E$47,E$48))*'DNSP Inputs General'!$D54*'DNSP Inputs General'!L54","v":0},{"$f":"IF('DNSP Inputs General'!$B54='DNSP Inputs General'!$A$41,F$46,IF('DNSP Inputs General'!$B54='DNSP Inputs General'!$A$42,F$47,F$48))*'DNSP Inputs General'!$D54*'DNSP Inputs General'!M54","v":0},{"$f":"IF('DNSP Inputs General'!$B54='DNSP Inputs General'!$A$41,G$46,IF('DNSP Inputs General'!$B54='DNSP Inputs General'!$A$42,G$47,G$48))*'DNSP Inputs General'!$D54*'DNSP Inputs General'!N54","v":0},{"$f":"IF('DNSP Inputs General'!$B54='DNSP Inputs General'!$A$41,H$46,IF('DNSP Inputs General'!$B54='DNSP Inputs General'!$A$42,H$47,H$48))*'DNSP Inputs General'!$D54*'DNSP Inputs General'!O54","v":0},null,null,{"$f":"D64/'Charges Summary'!D$4","v":0},{"$f":"E64/'Charges Summary'!E$4","v":0},{"$f":"F64/'Charges Summary'!F$4","v":0},{"$f":"G64/'Charges Summary'!G$4","v":0},{"$f":"H64/'Charges Summary'!H$4","v":0}]
[{"$f":"'DNSP Inputs General'!A$55","v":"Incandescent 150 watt"},null,null,{"$f":"IF('DNSP Inputs General'!$B55='DNSP Inputs General'!$A$41,D$46,IF('DNSP Inputs General'!$B55='DNSP Inputs General'!$A$42,D$47,D$48))*'DNSP Inputs General'!$D55*'DNSP Inputs General'!K55","v":0},{"$f":"IF('DNSP Inputs General'!$B55='DNSP Inputs General'!$A$41,E$46,IF('DNSP Inputs General'!$B55='DNSP Inputs General'!$A$42,E$47,E$48))*'DNSP Inputs General'!$D55*'DNSP Inputs General'!L55","v":0},{"$f":"IF('DNSP Inputs General'!$B55='DNSP Inputs General'!$A$41,F$46,IF('DNSP Inputs General'!$B55='DNSP Inputs General'!$A$42,F$47,F$48))*'DNSP Inputs General'!$D55*'DNSP Inputs General'!M55","v":0},{"$f":"IF('DNSP Inputs General'!$B55='DNSP Inputs General'!$A$41,G$46,IF('DNSP Inputs General'!$B55='DNSP Inputs General'!$A$42,G$47,G$48))*'DNSP Inputs General'!$D55*'DNSP Inputs General'!N55","v":0},{"$f":"IF('DNSP Inputs General'!$B55='DNSP Inputs General'!$A$41,H$46,IF('DNSP Inputs General'!$B55='DNSP Inputs General'!$A$42,H$47,H$48))*'DNSP Inputs General'!$D55*'DNSP Inputs General'!O55","v":0},null,null,{"$f":"D65/'Charges Summary'!D$4","v":0},{"$f":"E65/'Charges Summary'!E$4","v":0},{"$f":"F65/'Charges Summary'!F$4","v":0},{"$f":"G65/'Charges Summary'!G$4","v":0},{"$f":"H65/'Charges Summary'!H$4","v":0}]
[{"$f":"'DNSP Inputs General'!A$56","v":"Metal halide 250 watt"},null,null,{"$f":"IF('DNSP Inputs General'!$B56='DNSP Inputs General'!$A$41,D$46,IF('DNSP Inputs General'!$B56='DNSP Inputs General'!$A$42,D$47,D$48))*'DNSP Inputs General'!$D56*'DNSP Inputs General'!K56","v":32495.280882774965},{"$f":"IF('DNSP Inputs General'!$B56='DNSP Inputs General'!$A$41,E$46,IF('DNSP Inputs General'!$B56='DNSP Inputs General'!$A$42,E$47,E$48))*'DNSP Inputs General'!$D56*'DNSP Inputs General'!L56","v":33621.140984598183},{"$f":"IF('DNSP Inputs General'!$B56='DNSP Inputs General'!$A$41,F$46,IF('DNSP Inputs General'!$B56='DNSP Inputs General'!$A$42,F$47,F$48))*'DNSP Inputs General'!$D56*'DNSP Inputs General'!M56","v":35211.873239792425},{"$f":"IF('DNSP Inputs General'!$B56='DNSP Inputs General'!$A$41,G$46,IF('DNSP Inputs General'!$B56='DNSP Inputs General'!$A$42,G$47,G$48))*'DNSP Inputs General'!$D56*'DNSP Inputs General'!N56","v":37043.756982520426},{"$f":"IF('DNSP Inputs General'!$B56='DNSP Inputs General'!$A$41,H$46,IF('DNSP Inputs General'!$B56='DNSP Inputs General'!$A$42,H$47,H$48))*'DNSP Inputs General'!$D56*'DNSP Inputs General'!O56","v":38977.438973693788},null,null,{"$f":"D66/'Charges Summary'!D$4","v":31757.528154569758},{"$f":"E66/'Charges Summary'!E$4","v":32525.01333609601},{"$f":"F66/'Charges Summary'!F$4","v":33417.685666303223},{"$f":"G66/'Charges Summary'!G$4","v":34358.062299798978},{"$f":"H66/'Charges Summary'!H$4","v":35330.788758235358}]
[{"$f":"'DNSP Inputs General'!A$57","v":"Metal halide 400 watt"},null,null,{"$f":"IF('DNSP Inputs General'!$B57='DNSP Inputs General'!$A$41,D$46,IF('DNSP Inputs General'!$B57='DNSP Inputs General'!$A$42,D$47,D$48))*'DNSP Inputs General'!$D57*'DNSP Inputs General'!K57","v":0},{"$f":"IF('DNSP Inputs General'!$B57='DNSP Inputs General'!$A$41,E$46,IF('DNSP Inputs General'!$B57='DNSP Inputs General'!$A$42,E$47,E$48))*'DNSP Inputs General'!$D57*'DNSP Inputs General'!L57","v":0},{"$f":"IF('DNSP Inputs General'!$B57='DNSP Inputs General'!$A$41,F$46,IF('DNSP Inputs General'!$B57='DNSP Inputs General'!$A$42,F$47,F$48))*'DNSP Inputs General'!$D57*'DNSP Inputs General'!M57","v":0},{"$f":"IF('DNSP Inputs General'!$B57='DNSP Inputs General'!$A$41,G$46,IF('DNSP Inputs General'!$B57='DNSP Inputs General'!$A$42,G$47,G$48))*'DNSP Inputs General'!$D57*'DNSP Inputs General'!N57","v":0},{"$f":"IF('DNSP Inputs General'!$B57='DNSP Inputs General'!$A$41,H$46,IF('DNSP Inputs General'!$B57='DNSP Inputs General'!$A$42,H$47,H$48))*'DNSP Inputs General'!$D57*'DNSP Inputs General'!O57","v":0},null,null,{"$f":"D67/'Charges Summary'!D$4","v":0},{"$f":"E67/'Charges Summary'!E$4","v":0},{"$f":"F67/'Charges Summary'!F$4","v":0},{"$f":"G67/'Charges Summary'!G$4","v":0},{"$f":"H67/'Charges Summary'!H$4","v":0}]
[{"$f":"'DNSP Inputs General'!A$58","v":"Metal halide 70 watt"},null,null,{"$f":"IF('DNSP Inputs General'!$B58='DNSP Inputs General'!$A$41,D$46,IF('DNSP Inputs General'!$B58='DNSP Inputs General'!$A$42,D$47,D$48))*'DNSP Inputs General'!$D58*'DNSP Inputs General'!K58","v":432.41540231271676},{"$f":"IF('DNSP Inputs General'!$B58='DNSP Inputs General'!$A$41,E$46,IF('DNSP Inputs General'!$B58='DNSP Inputs General'!$A$42,E$47,E$48))*'DNSP Inputs General'!$D58*'DNSP Inputs General'!L58","v":448.38547674914309},{"$f":"IF('DNSP Inputs General'!$B58='DNSP Inputs General'!$A$41,F$46,IF('DNSP Inputs General'!$B58='DNSP Inputs General'!$A$42,F$47,F$48))*'DNSP Inputs General'!$D58*'DNSP Inputs General'!M58","v":470.03994457577954},{"$f":"IF('DNSP Inputs General'!$B58='DNSP Inputs General'!$A$41,G$46,IF('DNSP Inputs General'!$B58='DNSP Inputs General'!$A$42,G$47,G$48))*'DNSP Inputs General'!$D58*'DNSP Inputs General'!N58","v":495.0121412295336},{"$f":"IF('DNSP Inputs General'!$B58='DNSP Inputs General'!$A$41,H$46,IF('DNSP Inputs General'!$B58='DNSP Inputs General'!$A$42,H$47,H$48))*'DNSP Inputs General'!$D58*'DNSP Inputs General'!O58","v":521.48703179266977},null,null,{"$f":"D68/'Charges Summary'!D$4","v":422.59811087507723},{"$f":"E68/'Charges Summary'!E$4","v":433.76706393332836},{"$f":"F68/'Charges Summary'!F$4","v":446.08950541969477},{"$f":"G68/'Charges Summary'!G$4","v":459.12346297775599},{"$f":"H68/'Charges Summary'!H$4","v":472.69776171956471}]
[{"$f":"'DNSP Inputs General'!A$59","v":"Metal halide 150 watt"},null,null,{"$f":"IF('DNSP Inputs General'!$B59='DNSP Inputs General'!$A$41,D$46,IF('DNSP Inputs General'!$B59='DNSP Inputs General'!$A$42,D$47,D$48))*'DNSP Inputs General'!$D59*'DNSP Inputs General'!K59","v":4565.170673962115},{"$f":"IF('DNSP Inputs General'!$B59='DNSP Inputs General'!$A$41,E$46,IF('DNSP Inputs General'!$B59='DNSP Inputs General'!$A$42,E$47,E$48))*'DNSP Inputs General'!$D59*'DNSP Inputs General'!L59","v":4723.3077293087536},{"$f":"IF('DNSP Inputs General'!$B59='DNSP Inputs General'!$A$41,F$46,IF('DNSP Inputs General'!$B59='DNSP Inputs General'!$A$42,F$47,F$48))*'DNSP Inputs General'!$D59*'DNSP Inputs General'!M59","v":4946.7823701063098},{"$f":"IF('DNSP Inputs General'!$B59='DNSP Inputs General'!$A$41,G$46,IF('DNSP Inputs General'!$B59='DNSP Inputs General'!$A$42,G$47,G$48))*'DNSP Inputs General'!$D59*'DNSP Inputs General'!N59","v":5204.1255658870714},{"$f":"IF('DNSP Inputs General'!$B59='DNSP Inputs General'!$A$41,H$46,IF('DNSP Inputs General'!$B59='DNSP Inputs General'!$A$42,H$47,H$48))*'DNSP Inputs General'!$D59*'DNSP Inputs General'!O59","v":5475.7605891248095},null,null,{"$f":"D69/'Charges Summary'!D$4","v":4461.5258668411143},{"$f":"E69/'Charges Summary'!E$4","v":4569.3168758498814},{"$f":"F69/'Charges Summary'!F$4","v":4694.7237705322832},{"$f":"G69/'Charges Summary'!G$4","v":4826.823329315529},{"$f":"H69/'Charges Summary'!H$4","v":4963.4595232285237}]
[]
[]
[]
[]
[]
[{"$f":"'DNSP Inputs General'!A$67","v":"Energy Efficient Lights"}]
[{"$f":"'DNSP Inputs General'!A$68","v":"T5 2X14W"},null,null,{"$f":"SUM('Charges Summary'!D83,'Charges Summary'!D8)*'DNSP Inputs General'!$D68*'DNSP Inputs General'!K68","v":274244.37880966533},{"$f":"SUM('Charges Summary'!E83,'Charges Summary'!E8)*'DNSP Inputs General'!$D68*'DNSP Inputs General'!L68","v":271497.63839788735},{"$f":"SUM('Charges Summary'!F83,'Charges Summary'!F8)*'DNSP Inputs General'!$D68*'DNSP Inputs General'!M68","v":272444.20689054677},{"$f":"SUM('Charges Summary'!G83,'Charges Summary'!G8)*'DNSP Inputs General'!$D68*'DNSP Inputs General'!N68","v":274530.59971130575},{"$f":"SUM('Charges Summary'!H83,'Charges Summary'!H8)*'DNSP Inputs General'!$D68*'DNSP Inputs General'!O68","v":276602.72341898415},null,null,{"$f":"D76/'Charges Summary'!D$4","v":268018.10431178828},{"$f":"E76/'Charges Summary'!E$4","v":262646.18186679285},{"$f":"F76/'Charges Summary'!F$4","v":258562.07096601615},{"$f":"G76/'Charges Summary'!G$4","v":254626.96595631455},{"$f":"H76/'Charges Summary'!H$4","v":250724.33306006421}]
[{"$f":"'DNSP Inputs General'!A$69","v":"T5 2X24W"},null,null,{"$f":"SUM('Charges Summary'!D$83,'Charges Summary'!D$8)*'DNSP Inputs General'!$D69*'DNSP Inputs General'!K69","v":37440.284900427141},{"$f":"SUM('Charges Summary'!E$83,'Charges Summary'!E$8)*'DNSP Inputs General'!$D69*'DNSP Inputs General'!L69","v":37065.295469428238},{"$f":"SUM('Charges Summary'!F$83,'Charges Summary'!F$8)*'DNSP Inputs General'!$D69*'DNSP Inputs General'!M69","v":37194.52252668557},{"$f":"SUM('Charges Summary'!G$83,'Charges Summary'!G$8)*'DNSP Inputs General'!$D69*'DNSP Inputs General'!N69","v":37479.360239540343},{"$f":"SUM('Charges Summary'!H$83,'Charges Summary'!H$8)*'DNSP Inputs General'!$D69*'DNSP Inputs General'!O69","v":37762.249910063911},null,null,{"$f":"D77/'Charges Summary'!D$4","v":36590.2638641507},{"$f":"E77/'Charges Summary'!E$4","v":35856.880348045102},{"$f":"F77/'Charges Summary'!F$4","v":35299.310940957483},{"$f":"G77/'Charges Summary'!G$4","v":34762.084058438304},{"$f":"H77/'Charges Summary'!H$4","v":34229.290321218978}]
[{"$f":"'DNSP Inputs General'!A$70","v":"CF32"},null,null,{"$f":"SUM('Charges Summary'!D$83,'Charges Summary'!D$8)*'DNSP Inputs General'!$D70*'DNSP Inputs General'!K70","v":76356.715737558057},{"$f":"SUM('Charges Summary'!E$83,'Charges Summary'!E$8)*'DNSP Inputs General'!$D70*'DNSP Inputs General'!L70","v":75591.952289215667},{"$f":"SUM('Charges Summary'!F$83,'Charges Summary'!F$8)*'DNSP Inputs General'!$D70*'DNSP Inputs General'!M70","v":75855.501396890497},{"$f":"SUM('Charges Summary'!G$83,'Charges Summary'!G$8)*'DNSP Inputs General'!$D70*'DNSP Inputs General'!N70","v":76436.407026471847},{"$f":"SUM('Charges Summary'!H$83,'Charges Summary'!H$8)*'DNSP Inputs General'!$D70*'DNSP Inputs General'!O70","v":77013.339766559351},null,null,{"$f":"D78/'Charges Summary'!D$4","v":74623.160162045751},{"$f":"E78/'Charges Summary'!E$4","v":73127.478256450864},{"$f":"F78/'Charges Summary'!F$4","v":71990.356334591168},{"$f":"G78/'Charges Summary'!G$4","v":70894.721499968859},{"$f":"H78/'Charges Summary'!H$4","v":69808.127740124299}]
[{"$f":"'DNSP Inputs General'!A$71","v":"CF42"},null,null,{"$f":"SUM('Charges Summary'!D$83,'Charges Summary'!D$8)*'DNSP Inputs General'!$D71*'DNSP Inputs General'!K71","v":111605.88266593545},{"$f":"SUM('Charges Summary'!E$83,'Charges Summary'!E$8)*'DNSP Inputs General'!$D71*'DNSP Inputs General'!L71","v":110488.07529485555},{"$f":"SUM('Charges Summary'!F$83,'Charges Summary'!F$8)*'DNSP Inputs General'!$D71*'DNSP Inputs General'!M71","v":110873.28870409864},{"$f":"SUM('Charges Summary'!G$83,'Charges Summary'!G$8)*'DNSP Inputs General'!$D71*'DNSP Inputs General'!N71","v":111722.36248770493},{"$f":"SUM('Charges Summary'!H$83,'Charges Summary'!H$8)*'DNSP Inputs General'!$D71*'DNSP Inputs General'!O71","v":112565.6293447768},null,null,{"$f":"D79/'Charges Summary'!D$4","v":109072.05183931258},{"$f":"E79/'Charges Summary'!E$4","v":106885.90622462794},{"$f":"F79/'Charges Summary'!F$4","v":105223.84553275467},{"$f":"G79/'Charges Summary'!G$4","v":103622.42394702477},{"$f":"H79/'Charges Summary'!H$4","v":102034.21714038888}]
[{"$f":"'DNSP Inputs General'!A$72","v":"Category P LED 18 Watt"},null,null,{"$f":"SUM('Charges Summary'!D101,'Charges Summary'!D8)*'DNSP Inputs General'!$D72*'DNSP Inputs General'!K72","v":461659.72130275215},{"$f":"SUM('Charges Summary'!E101,'Charges Summary'!E8)*'DNSP Inputs General'!$D72*'DNSP Inputs General'!L72","v":664802.15014993574},{"$f":"SUM('Charges Summary'!F101,'Charges Summary'!F8)*'DNSP Inputs General'!$D72*'DNSP Inputs General'!M72","v":737543.86549136601},{"$f":"SUM('Charges Summary'!G101,'Charges Summary'!G8)*'DNSP Inputs General'!$D72*'DNSP Inputs General'!N72","v":819213.49481229857},{"$f":"SUM('Charges Summary'!H101,'Charges Summary'!H8)*'DNSP Inputs General'!$D72*'DNSP Inputs General'!O72","v":909726.62001874472},null,null,{"$f":"D80/'Charges Summary'!D$4","v":451178.48496193625},{"$f":"E80/'Charges Summary'!E$4","v":643128.04878922168},{"$f":"F80/'Charges Summary'!F$4","v":699963.01799267717},{"$f":"G80/'Charges Summary'!G$4","v":759820.02324651717},{"$f":"H80/'Charges Summary'!H$4","v":824614.44071064284}]
[{"$f":"'DNSP Inputs General'!A$73","v":"Category P LED 47 Watt"},null,null,{"$f":"SUM('Charges Summary'!D$101,'Charges Summary'!D$8)*'DNSP Inputs General'!$D73*'DNSP Inputs General'!K73","v":0},{"$f":"SUM('Charges Summary'!E$101,'Charges Summary'!E$8)*'DNSP Inputs General'!$D73*'DNSP Inputs General'!L73","v":0},{"$f":"SUM('Charges Summary'!F$101,'Charges Summary'!F$8)*'DNSP Inputs General'!$D73*'DNSP Inputs General'!M73","v":0},{"$f":"SUM('Charges Summary'!G$101,'Charges Summary'!G$8)*'DNSP Inputs General'!$D73*'DNSP Inputs General'!N73","v":0},{"$f":"SUM('Charges Summary'!H$101,'Charges Summary'!H$8)*'DNSP Inputs General'!$D73*'DNSP Inputs General'!O73","v":0},null,null,{"$f":"D81/'Charges Summary'!D$4","v":0},{"$f":"E81/'Charges Summary'!E$4","v":0},{"$f":"F81/'Charges Summary'!F$4","v":0},{"$f":"G81/'Charges Summary'!G$4","v":0},{"$f":"H81/'Charges Summary'!H$4","v":0}]
[]
["Total O & M",null,null,{"$f":"SUM(D51:D82)","v":5523262.5416049911},{"$f":"SUM(E51:E82)","v":5629797.9519554451},{"$f":"SUM(F51:F82)","v":5826912.3888891665},{"$f":"SUM(G51:G82)","v":6078937.9141427428},{"$f":"SUM(H51:H82)","v":6365286.3818060793},null,null,{"$f":"SUM(K51:K82)","v":5397865.8102038261},{"$f":"SUM(L51:L82)","v":5446253.402011523},{"$f":"SUM(M51:M82)","v":5530007.5997358123},{"$f":"SUM(N51:N82)","v":5638211.2556585437},{"$f":"SUM(O51:O82)","v":5769763.0850770716}]
[]
[]
["Public Lighting - Capital Charge",null,null,"Capital Charge - Nominal ",null,null,null,null,null,null,"Capital Charge - Real 2015 $ "]
[null,null,null,{"$f":"D$2","v":2016},2017,2018,2019,2020,null,null,{"$f":"K$2","v":2016},2017,2018,2019,2020]
[]
["Unit cost"]
[{"$f":"'DNSP Inputs General'!A$41","v":"Mercury vapour 80 watt"},null,null,{"$f":"SUM('Charges Summary'!D27,'Charges Summary'!D11)","v":23.088973216574132},{"$f":"SUM('Charges Summary'!E27,'Charges Summary'!E11)","v":22.480627359876731},{"$f":"SUM('Charges Summary'!F27,'Charges Summary'!F11)","v":26.015105160550469},{"$f":"SUM('Charges Summary'!G27,'Charges Summary'!G11)","v":28.811992041219391},{"$f":"SUM('Charges Summary'!H27,'Charges Summary'!H11)","v":30.733898192092546}]
[{"$f":"'DNSP Inputs General'!A$42","v":"Sodium high pressure 150 watt"},null,null,{"$f":"SUM('Charges Summary'!D51,'Charges Summary'!D11)","v":23.338528877145322},{"$f":"SUM('Charges Summary'!E51,'Charges Summary'!E11)","v":22.747240454376975},{"$f":"SUM('Charges Summary'!F51,'Charges Summary'!F11)","v":26.328914545324757},{"$f":"SUM('Charges Summary'!G51,'Charges Summary'!G11)","v":29.170038569870833},{"$f":"SUM('Charges Summary'!H51,'Charges Summary'!H11)","v":31.128071461263048}]
[{"$f":"'DNSP Inputs General'!A$43","v":"Sodium high pressure 250 watt"},null,null,{"$f":"SUM('Charges Summary'!D67,'Charges Summary'!D11)","v":24.541776255278165},{"$f":"SUM('Charges Summary'!E67,'Charges Summary'!E11)","v":24.032731259109859},{"$f":"SUM('Charges Summary'!F67,'Charges Summary'!F11)","v":27.841965055174562},{"$f":"SUM('Charges Summary'!G67,'Charges Summary'!G11)","v":30.896381085457712},{"$f":"SUM('Charges Summary'!H67,'Charges Summary'!H11)","v":33.028601193082764}]
[]
[{"$f":"'DNSP Inputs General'!A$40","v":"Existing Lights"}]
[{"$f":"'DNSP Inputs General'!A$41","v":"Mercury vapour 80 watt"},null,null,{"$f":"D90*'DNSP Inputs General'!K41","v":1383997.0806555827},{"$f":"E90*'DNSP Inputs General'!L41","v":1099171.3024605184},{"$f":"F90*'DNSP Inputs General'!M41","v":1144787.9504735393},{"$f":"G90*'DNSP Inputs General'!N41","v":1141077.8085629158},{"$f":"H90*'DNSP Inputs General'!O41","v":1095474.1425969808},null,null,{"$f":"D95/'Charges Summary'!D$4","v":1352575.6682429598},{"$f":"E95/'Charges Summary'!E$4","v":1063335.7531667259},{"$f":"F95/'Charges Summary'!F$4","v":1086456.3672307984},{"$f":"G95/'Charges Summary'!G$4","v":1058348.9804779317},{"$f":"H95/'Charges Summary'!H$4","v":992983.8014325304}]
[{"$f":"'DNSP Inputs General'!A$42","v":"Sodium high pressure 150 watt"},null,null,{"$f":"D91*'DNSP Inputs General'!K42","v":688852.71691209043},{"$f":"E91*'DNSP Inputs General'!L42","v":701381.93275738601},{"$f":"F91*'DNSP Inputs General'!M42","v":848070.13286229048},{"$f":"G91*'DNSP Inputs General'!N42","v":981541.74442233599},{"$f":"H91*'DNSP Inputs General'!O42","v":1094200.5876672105},null,null,{"$f":"D96/'Charges Summary'!D$4","v":673213.43153195234},{"$f":"E96/'Charges Summary'!E$4","v":678515.24512749701},{"$f":"F96/'Charges Summary'!F$4","v":804857.52433485421},{"$f":"G96/'Charges Summary'!G$4","v":910379.37703319429},{"$f":"H96/'Charges Summary'!H$4","v":991829.39772155054}]
[{"$f":"'DNSP Inputs General'!A$43","v":"Sodium high pressure 250 watt"},null,null,{"$f":"D92*'DNSP Inputs General'!K43","v":332854.47686000238},{"$f":"E92*'DNSP Inputs General'!L43","v":337001.88016964466},{"$f":"F92*'DNSP Inputs General'!M43","v":403654.55855590425},{"$f":"G92*'DNSP Inputs General'!N43","v":463125.15873339493},{"$f":"H92*'DNSP Inputs General'!O43","v":511872.41478089383},null,null,{"$f":"D97/'Charges Summary'!D$4","v":325297.55500157486},{"$f":"E97/'Charges Summary'!E$4","v":326014.83250756847},{"$f":"F97/'Charges Summary'!F$4","v":383086.72372328222},{"$f":"G97/'Charges Summary'!G$4","v":429548.30590953818},{"$f":"H97/'Charges Summary'!H$4","v":463982.66879456129}]
[{"$f":"'DNSP Inputs General'!A$44","v":"Fluorescent 20 watt"},null,null,{"$f":"IF('DNSP Inputs General'!$B44='DNSP Inputs General'!$A$41,D$90,IF('DNSP Inputs General'!$B44='DNSP Inputs General'!$A$42,D$91,D$92))*'DNSP Inputs General'!$D44*'DNSP Inputs General'!K44","v":0},{"$f":"IF('DNSP Inputs General'!$B44='DNSP Inputs General'!$A$41,E$90,IF('DNSP Inputs General'!$B44='DNSP Inputs General'!$A$42,E$91,E$92))*'DNSP Inputs General'!$D44*'DNSP Inputs General'!L44","v":0},{"$f":"IF('DNSP Inputs General'!$B44='DNSP Inputs General'!$A$41,F$90,IF('DNSP Inputs General'!$B44='DNSP Inputs General'!$A$42,F$91,F$92))*'DNSP Inputs General'!$D44*'DNSP Inputs General'!M44","v":0},{"$f":"IF('DNSP Inputs General'!$B44='DNSP Inputs General'!$A$41,G$90,IF('DNSP Inputs General'!$B44='DNSP Inputs General'!$A$42,G$91,G$92))*'DNSP Inputs General'!$D44*'DNSP Inputs General'!N44","v":0},{"$f":"IF('DNSP Inputs General'!$B44='DNSP Inputs General'!$A$41,H$90,IF('DNSP Inputs General'!$B44='DNSP Inputs General'!$A$42,H$91,H$92))*'DNSP Inputs General'!$D44*'DNSP Inputs General'!O44","v":0},null,null,{"$f":"D98/'Charges Summary'!D$4","v":0},{"$f":"E98/'Charges Summary'!E$4","v":0},{"$f":"F98/'Charges Summary'!F$4","v":0},{"$f":"G98/'Charges Summary'!G$4","v":0},{"$f":"H98/'Charges Summary'!H$4","v":0}]
[{"$f":"'DNSP Inputs General'!A$45","v":"Fluorescent 40 watt"},null,null,{"$f":"IF('DNSP Inputs General'!$B45='DNSP Inputs General'!$A$41,D$90,IF('DNSP Inputs General'!$B45='DNSP Inputs General'!$A$42,D$91,D$92))*'DNSP Inputs General'!$D45*'DNSP Inputs General'!K45","v":0},{"$f":"IF('DNSP Inputs General'!$B45='DNSP Inputs General'!$A$41,E$90,IF('DNSP Inputs General'!$B45='DNSP Inputs General'!$A$42,E$91,E$92))*'DNSP Inputs General'!$D45*'DNSP Inputs General'!L45","v":0},{"$f":"IF('DNSP Inputs General'!$B45='DNSP Inputs General'!$A$41,F$90,IF('DNSP Inputs General'!$B45='DNSP Inputs General'!$A$42,F$91,F$92))*'DNSP Inputs General'!$D45*'DNSP Inputs General'!M45","v":0},{"$f":"IF('DNSP Inputs General'!$B45='DNSP Inputs General'!$A$41,G$90,IF('DNSP Inputs General'!$B45='DNSP Inputs General'!$A$42,G$91,G$92))*'DNSP Inputs General'!$D45*'DNSP Inputs General'!N45","v":0},{"$f":"IF('DNSP Inputs General'!$B45='DNSP Inputs General'!$A$41,H$90,IF('DNSP Inputs General'!$B45='DNSP Inputs General'!$A$42,H$91,H$92))*'DNSP Inputs General'!$D45*'DNSP Inputs General'!O45","v":0},null,null,{"$f":"D99/'Charges Summary'!D$4","v":0},{"$f":"E99/'Charges Summary'!E$4","v":0},{"$f":"F99/'Charges Summary'!F$4","v":0},{"$f":"G99/'Charges Summary'!G$4","v":0},{"$f":"H99/'Charges Summary'!H$4","v":0}]
[{"$f":"'DNSP Inputs General'!A$46","v":"Mercury vapour 50 watt"},null,null,{"$f":"IF('DNSP Inputs General'!$B46='DNSP Inputs General'!$A$41,D$90,IF('DNSP Inputs General'!$B46='DNSP Inputs General'!$A$42,D$91,D$92))*'DNSP Inputs General'!$D46*'DNSP Inputs General'!K46","v":6530.7990145393005},{"$f":"IF('DNSP Inputs General'!$B46='DNSP Inputs General'!$A$41,E$90,IF('DNSP Inputs General'!$B46='DNSP Inputs General'!$A$42,E$91,E$92))*'DNSP Inputs General'!$D46*'DNSP Inputs General'!L46","v":5962.8967560615374},{"$f":"IF('DNSP Inputs General'!$B46='DNSP Inputs General'!$A$41,F$90,IF('DNSP Inputs General'!$B46='DNSP Inputs General'!$A$42,F$91,F$92))*'DNSP Inputs General'!$D46*'DNSP Inputs General'!M46","v":6470.8541828589241},{"$f":"IF('DNSP Inputs General'!$B46='DNSP Inputs General'!$A$41,G$90,IF('DNSP Inputs General'!$B46='DNSP Inputs General'!$A$42,G$91,G$92))*'DNSP Inputs General'!$D46*'DNSP Inputs General'!N46","v":6720.420968415182},{"$f":"IF('DNSP Inputs General'!$B46='DNSP Inputs General'!$A$41,H$90,IF('DNSP Inputs General'!$B46='DNSP Inputs General'!$A$42,H$91,H$92))*'DNSP Inputs General'!$D46*'DNSP Inputs General'!O46","v":6722.4565650604309},null,null,{"$f":"D100/'Charges Summary'!D$4","v":6382.5277991675257},{"$f":"E100/'Charges Summary'!E$4","v":5768.4924078427439},{"$f":"F100/'Charges Summary'!F$4","v":6141.1379509026556},{"$f":"G100/'Charges Summary'!G$4","v":6233.1864023035687},{"$f":"H100/'Charges Summary'!H$4","v":6093.5171496736839}]
[{"$f":"'DNSP Inputs General'!A$47","v":"Mercury vapour 125 watt"},null,null,{"$f":"IF('DNSP Inputs General'!$B47='DNSP Inputs General'!$A$41,D$90,IF('DNSP Inputs General'!$B47='DNSP Inputs General'!$A$42,D$91,D$92))*'DNSP Inputs General'!$D47*'DNSP Inputs General'!K47","v":33106.804364048272},{"$f":"IF('DNSP Inputs General'!$B47='DNSP Inputs General'!$A$41,E$90,IF('DNSP Inputs General'!$B47='DNSP Inputs General'!$A$42,E$91,E$92))*'DNSP Inputs General'!$D47*'DNSP Inputs General'!L47","v":33467.579956776477},{"$f":"IF('DNSP Inputs General'!$B47='DNSP Inputs General'!$A$41,F$90,IF('DNSP Inputs General'!$B47='DNSP Inputs General'!$A$42,F$91,F$92))*'DNSP Inputs General'!$D47*'DNSP Inputs General'!M47","v":40210.98475121917},{"$f":"IF('DNSP Inputs General'!$B47='DNSP Inputs General'!$A$41,G$90,IF('DNSP Inputs General'!$B47='DNSP Inputs General'!$A$42,G$91,G$92))*'DNSP Inputs General'!$D47*'DNSP Inputs General'!N47","v":46237.638968585568},{"$f":"IF('DNSP Inputs General'!$B47='DNSP Inputs General'!$A$41,H$90,IF('DNSP Inputs General'!$B47='DNSP Inputs General'!$A$42,H$91,H$92))*'DNSP Inputs General'!$D47*'DNSP Inputs General'!O47","v":51208.641192403091},null,null,{"$f":"D101/'Charges Summary'!D$4","v":32355.167985527856},{"$f":"E101/'Charges Summary'!E$4","v":32376.458756104399},{"$f":"F101/'Charges Summary'!F$4","v":38162.072196437221},{"$f":"G101/'Charges Summary'!G$4","v":42885.382306872765},{"$f":"H101/'Charges Summary'!H$4","v":46417.664479858104}]
[{"$f":"'DNSP Inputs General'!A$48","v":"Mercury vapour 250 watt"},null,null,{"$f":"IF('DNSP Inputs General'!$B48='DNSP Inputs General'!$A$41,D$90,IF('DNSP Inputs General'!$B48='DNSP Inputs General'!$A$42,D$91,D$92))*'DNSP Inputs General'!$D48*'DNSP Inputs General'!K48","v":4015.1177511411333},{"$f":"IF('DNSP Inputs General'!$B48='DNSP Inputs General'!$A$41,E$90,IF('DNSP Inputs General'!$B48='DNSP Inputs General'!$A$42,E$91,E$92))*'DNSP Inputs General'!$D48*'DNSP Inputs General'!L48","v":3022.8465005996031},{"$f":"IF('DNSP Inputs General'!$B48='DNSP Inputs General'!$A$41,F$90,IF('DNSP Inputs General'!$B48='DNSP Inputs General'!$A$42,F$91,F$92))*'DNSP Inputs General'!$D48*'DNSP Inputs General'!M48","v":2692.3624115062116},{"$f":"IF('DNSP Inputs General'!$B48='DNSP Inputs General'!$A$41,G$90,IF('DNSP Inputs General'!$B48='DNSP Inputs General'!$A$42,G$91,G$92))*'DNSP Inputs General'!$D48*'DNSP Inputs General'!N48","v":2297.0048815649238},{"$f":"IF('DNSP Inputs General'!$B48='DNSP Inputs General'!$A$41,H$90,IF('DNSP Inputs General'!$B48='DNSP Inputs General'!$A$42,H$91,H$92))*'DNSP Inputs General'!$D48*'DNSP Inputs General'!O48","v":1887.8398809901139},null,null,{"$f":"D102/'Charges Summary'!D$4","v":3923.9610048537147},{"$f":"E102/'Charges Summary'!E$4","v":2924.2946510950565},{"$f":"F102/'Charges Summary'!F$4","v":2555.1756407497251},{"$f":"G102/'Charges Summary'!G$4","v":2130.4706447834042},{"$f":"H102/'Charges Summary'!H$4","v":1711.2174068093477}]
[{"$f":"'DNSP Inputs General'!A$49","v":"Mercury vapour 400 watt"},null,null,{"$f":"IF('DNSP Inputs General'!$B49='DNSP Inputs General'!$A$41,D$90,IF('DNSP Inputs General'!$B49='DNSP Inputs General'!$A$42,D$91,D$92))*'DNSP Inputs General'!$D49*'DNSP Inputs General'!K49","v":1788.6758781369183},{"$f":"IF('DNSP Inputs General'!$B49='DNSP Inputs General'!$A$41,E$90,IF('DNSP Inputs General'!$B49='DNSP Inputs General'!$A$42,E$91,E$92))*'DNSP Inputs General'!$D49*'DNSP Inputs General'!L49","v":1559.8715062327574},{"$f":"IF('DNSP Inputs General'!$B49='DNSP Inputs General'!$A$41,F$90,IF('DNSP Inputs General'!$B49='DNSP Inputs General'!$A$42,F$91,F$92))*'DNSP Inputs General'!$D49*'DNSP Inputs General'!M49","v":1609.3318858106645},{"$f":"IF('DNSP Inputs General'!$B49='DNSP Inputs General'!$A$41,G$90,IF('DNSP Inputs General'!$B49='DNSP Inputs General'!$A$42,G$91,G$92))*'DNSP Inputs General'!$D49*'DNSP Inputs General'!N49","v":1590.4256903732175},{"$f":"IF('DNSP Inputs General'!$B49='DNSP Inputs General'!$A$41,H$90,IF('DNSP Inputs General'!$B49='DNSP Inputs General'!$A$42,H$91,H$92))*'DNSP Inputs General'!$D49*'DNSP Inputs General'!O49","v":1514.104978179008},null,null,{"$f":"D103/'Charges Summary'!D$4","v":1748.0668889815161},{"$f":"E103/'Charges Summary'!E$4","v":1509.0160552867076},{"$f":"F103/'Charges Summary'!F$4","v":1527.3299073451058},{"$f":"G103/'Charges Summary'!G$4","v":1475.1188703356481},{"$f":"H103/'Charges Summary'!H$4","v":1372.4483842547736}]
[{"$f":"'DNSP Inputs General'!A$50","v":"Mercury vapour 700 watt"},null,null,{"$f":"IF('DNSP Inputs General'!$B50='DNSP Inputs General'!$A$41,D$90,IF('DNSP Inputs General'!$B50='DNSP Inputs General'!$A$42,D$91,D$92))*'DNSP Inputs General'!$D50*'DNSP Inputs General'!K50","v":0},{"$f":"IF('DNSP Inputs General'!$B50='DNSP Inputs General'!$A$41,E$90,IF('DNSP Inputs General'!$B50='DNSP Inputs General'!$A$42,E$91,E$92))*'DNSP Inputs General'!$D50*'DNSP Inputs General'!L50","v":0},{"$f":"IF('DNSP Inputs General'!$B50='DNSP Inputs General'!$A$41,F$90,IF('DNSP Inputs General'!$B50='DNSP Inputs General'!$A$42,F$91,F$92))*'DNSP Inputs General'!$D50*'DNSP Inputs General'!M50","v":0},{"$f":"IF('DNSP Inputs General'!$B50='DNSP Inputs General'!$A$41,G$90,IF('DNSP Inputs General'!$B50='DNSP Inputs General'!$A$42,G$91,G$92))*'DNSP Inputs General'!$D50*'DNSP Inputs General'!N50","v":0},{"$f":"IF('DNSP Inputs General'!$B50='DNSP Inputs General'!$A$41,H$90,IF('DNSP Inputs General'!$B50='DNSP Inputs General'!$A$42,H$91,H$92))*'DNSP Inputs General'!$D50*'DNSP Inputs General'!O50","v":0},null,null,{"$f":"D104/'Charges Summary'!D$4","v":0},{"$f":"E104/'Charges Summary'!E$4","v":0},{"$f":"F104/'Charges Summary'!F$4","v":0},{"$f":"G104/'Charges Summary'!G$4","v":0},{"$f":"H104/'Charges Summary'!H$4","v":0}]
[{"$f":"'DNSP Inputs General'!A$51","v":"Sodium low pressure 90 watt"},null,null,{"$f":"IF('DNSP Inputs General'!$B51='DNSP Inputs General'!$A$41,D$90,IF('DNSP Inputs General'!$B51='DNSP Inputs General'!$A$42,D$91,D$92))*'DNSP Inputs General'!$D51*'DNSP Inputs General'!K51","v":0},{"$f":"IF('DNSP Inputs General'!$B51='DNSP Inputs General'!$A$41,E$90,IF('DNSP Inputs General'!$B51='DNSP Inputs General'!$A$42,E$91,E$92))*'DNSP Inputs General'!$D51*'DNSP Inputs General'!L51","v":0},{"$f":"IF('DNSP Inputs General'!$B51='DNSP Inputs General'!$A$41,F$90,IF('DNSP Inputs General'!$B51='DNSP Inputs General'!$A$42,F$91,F$92))*'DNSP Inputs General'!$D51*'DNSP Inputs General'!M51","v":0},{"$f":"IF('DNSP Inputs General'!$B51='DNSP Inputs General'!$A$41,G$90,IF('DNSP Inputs General'!$B51='DNSP Inputs General'!$A$42,G$91,G$92))*'DNSP Inputs General'!$D51*'DNSP Inputs General'!N51","v":0},{"$f":"IF('DNSP Inputs General'!$B51='DNSP Inputs General'!$A$41,H$90,IF('DNSP Inputs General'!$B51='DNSP Inputs General'!$A$42,H$91,H$92))*'DNSP Inputs General'!$D51*'DNSP Inputs General'!O51","v":0},null,null,{"$f":"D105/'Charges Summary'!D$4","v":0},{"$f":"E105/'Charges Summary'!E$4","v":0},{"$f":"F105/'Charges Summary'!F$4","v":0},{"$f":"G105/'Charges Summary'!G$4","v":0},{"$f":"H105/'Charges Summary'!H$4","v":0}]
[{"$f":"'DNSP Inputs General'!A$52","v":"Sodium low pressure 180 watt"},null,null,{"$f":"IF('DNSP Inputs General'!$B52='DNSP Inputs General'!$A$41,D$90,IF('DNSP Inputs General'!$B52='DNSP Inputs General'!$A$42,D$91,D$92))*'DNSP Inputs General'!$D52*'DNSP Inputs General'!K52","v":0},{"$f":"IF('DNSP Inputs General'!$B52='DNSP Inputs General'!$A$41,E$90,IF('DNSP Inputs General'!$B52='DNSP Inputs General'!$A$42,E$91,E$92))*'DNSP Inputs General'!$D52*'DNSP Inputs General'!L52","v":0},{"$f":"IF('DNSP Inputs General'!$B52='DNSP Inputs General'!$A$41,F$90,IF('DNSP Inputs General'!$B52='DNSP Inputs General'!$A$42,F$91,F$92))*'DNSP Inputs General'!$D52*'DNSP Inputs General'!M52","v":0},{"$f":"IF('DNSP Inputs General'!$B52='DNSP Inputs General'!$A$41,G$90,IF('DNSP Inputs General'!$B52='DNSP Inputs General'!$A$42,G$91,G$92))*'DNSP Inputs General'!$D52*'DNSP Inputs General'!N52","v":0},{"$f":"IF('DNSP Inputs General'!$B52='DNSP Inputs General'!$A$41,H$90,IF('DNSP Inputs General'!$B52='DNSP Inputs General'!$A$42,H$91,H$92))*'DNSP Inputs General'!$D52*'DNSP Inputs General'!O52","v":0},null,null,{"$f":"D106/'Charges Summary'!D$4","v":0},{"$f":"E106/'Charges Summary'!E$4","v":0},{"$f":"F106/'Charges Summary'!F$4","v":0},{"$f":"G106/'Charges Summary'!G$4","v":0},{"$f":"H106/'Charges Summary'!H$4","v":0}]
[{"$f":"'DNSP Inputs General'!A$53","v":"Sodium high pressure 400 watt"},null,null,{"$f":"IF('DNSP Inputs General'!$B53='DNSP Inputs General'!$A$41,D$90,IF('DNSP Inputs General'!$B53='DNSP Inputs General'!$A$42,D$91,D$92))*'DNSP Inputs General'!$D53*'DNSP Inputs General'!K53","v":24892.139348704433},{"$f":"IF('DNSP Inputs General'!$B53='DNSP Inputs General'!$A$41,E$90,IF('DNSP Inputs General'!$B53='DNSP Inputs General'!$A$42,E$91,E$92))*'DNSP Inputs General'!$D53*'DNSP Inputs General'!L53","v":24459.656807201958},{"$f":"IF('DNSP Inputs General'!$B53='DNSP Inputs General'!$A$41,F$90,IF('DNSP Inputs General'!$B53='DNSP Inputs General'!$A$42,F$91,F$92))*'DNSP Inputs General'!$D53*'DNSP Inputs General'!M53","v":28434.009950043561},{"$f":"IF('DNSP Inputs General'!$B53='DNSP Inputs General'!$A$41,G$90,IF('DNSP Inputs General'!$B53='DNSP Inputs General'!$A$42,G$91,G$92))*'DNSP Inputs General'!$D53*'DNSP Inputs General'!N53","v":31661.890174207678},{"$f":"IF('DNSP Inputs General'!$B53='DNSP Inputs General'!$A$41,H$90,IF('DNSP Inputs General'!$B53='DNSP Inputs General'!$A$42,H$91,H$92))*'DNSP Inputs General'!$D53*'DNSP Inputs General'!O53","v":33963.340875523252},null,null,{"$f":"D107/'Charges Summary'!D$4","v":24327.003636179932},{"$f":"E107/'Charges Summary'!E$4","v":23662.214920517312},{"$f":"F107/'Charges Summary'!F$4","v":26985.181966101369},{"$f":"G107/'Charges Summary'!G$4","v":29366.384075139365},{"$f":"H107/'Charges Summary'!H$4","v":30785.799518714146}]
[{"$f":"'DNSP Inputs General'!A$54","v":"Incandescent 100 watt"},null,null,{"$f":"IF('DNSP Inputs General'!$B54='DNSP Inputs General'!$A$41,D$90,IF('DNSP Inputs General'!$B54='DNSP Inputs General'!$A$42,D$91,D$92))*'DNSP Inputs General'!$D54*'DNSP Inputs General'!K54","v":0},{"$f":"IF('DNSP Inputs General'!$B54='DNSP Inputs General'!$A$41,E$90,IF('DNSP Inputs General'!$B54='DNSP Inputs General'!$A$42,E$91,E$92))*'DNSP Inputs General'!$D54*'DNSP Inputs General'!L54","v":0},{"$f":"IF('DNSP Inputs General'!$B54='DNSP Inputs General'!$A$41,F$90,IF('DNSP Inputs General'!$B54='DNSP Inputs General'!$A$42,F$91,F$92))*'DNSP Inputs General'!$D54*'DNSP Inputs General'!M54","v":0},{"$f":"IF('DNSP Inputs General'!$B54='DNSP Inputs General'!$A$41,G$90,IF('DNSP Inputs General'!$B54='DNSP Inputs General'!$A$42,G$91,G$92))*'DNSP Inputs General'!$D54*'DNSP Inputs General'!N54","v":0},{"$f":"IF('DNSP Inputs General'!$B54='DNSP Inputs General'!$A$41,H$90,IF('DNSP Inputs General'!$B54='DNSP Inputs General'!$A$42,H$91,H$92))*'DNSP Inputs General'!$D54*'DNSP Inputs General'!O54","v":0},null,null,{"$f":"D108/'Charges Summary'!D$4","v":0},{"$f":"E108/'Charges Summary'!E$4","v":0},{"$f":"F108/'Charges Summary'!F$4","v":0},{"$f":"G108/'Charges Summary'!G$4","v":0},{"$f":"H108/'Charges Summary'!H$4","v":0}]
[{"$f":"'DNSP Inputs General'!A$55","v":"Incandescent 150 watt"},null,null,{"$f":"IF('DNSP Inputs General'!$B55='DNSP Inputs General'!$A$41,D$90,IF('DNSP Inputs General'!$B55='DNSP Inputs General'!$A$42,D$91,D$92))*'DNSP Inputs General'!$D55*'DNSP Inputs General'!K55","v":0},{"$f":"IF('DNSP Inputs General'!$B55='DNSP Inputs General'!$A$41,E$90,IF('DNSP Inputs General'!$B55='DNSP Inputs General'!$A$42,E$91,E$92))*'DNSP Inputs General'!$D55*'DNSP Inputs General'!L55","v":0},{"$f":"IF('DNSP Inputs General'!$B55='DNSP Inputs General'!$A$41,F$90,IF('DNSP Inputs General'!$B55='DNSP Inputs General'!$A$42,F$91,F$92))*'DNSP Inputs General'!$D55*'DNSP Inputs General'!M55","v":0},{"$f":"IF('DNSP Inputs General'!$B55='DNSP Inputs General'!$A$41,G$90,IF('DNSP Inputs General'!$B55='DNSP Inputs General'!$A$42,G$91,G$92))*'DNSP Inputs General'!$D55*'DNSP Inputs General'!N55","v":0},{"$f":"IF('DNSP Inputs General'!$B55='DNSP Inputs General'!$A$41,H$90,IF('DNSP Inputs General'!$B55='DNSP Inputs General'!$A$42,H$91,H$92))*'DNSP Inputs General'!$D55*'DNSP Inputs General'!O55","v":0},null,null,{"$f":"D109/'Charges Summary'!D$4","v":0},{"$f":"E109/'Charges Summary'!E$4","v":0},{"$f":"F109/'Charges Summary'!F$4","v":0},{"$f":"G109/'Charges Summary'!G$4","v":0},{"$f":"H109/'Charges Summary'!H$4","v":0}]
[{"$f":"'DNSP Inputs General'!A$56","v":"Metal halide 250 watt"},null,null,{"$f":"IF('DNSP Inputs General'!$B56='DNSP Inputs General'!$A$41,D$90,IF('DNSP Inputs General'!$B56='DNSP Inputs General'!$A$42,D$91,D$92))*'DNSP Inputs General'!$D56*'DNSP Inputs General'!K56","v":11852.441025776088},{"$f":"IF('DNSP Inputs General'!$B56='DNSP Inputs General'!$A$41,E$90,IF('DNSP Inputs General'!$B56='DNSP Inputs General'!$A$42,E$91,E$92))*'DNSP Inputs General'!$D56*'DNSP Inputs General'!L56","v":11838.729907464496},{"$f":"IF('DNSP Inputs General'!$B56='DNSP Inputs General'!$A$41,F$90,IF('DNSP Inputs General'!$B56='DNSP Inputs General'!$A$42,F$91,F$92))*'DNSP Inputs General'!$D56*'DNSP Inputs General'!M56","v":13989.495028429599},{"$f":"IF('DNSP Inputs General'!$B56='DNSP Inputs General'!$A$41,G$90,IF('DNSP Inputs General'!$B56='DNSP Inputs General'!$A$42,G$91,G$92))*'DNSP Inputs General'!$D56*'DNSP Inputs General'!N56","v":15834.703624892627},{"$f":"IF('DNSP Inputs General'!$B56='DNSP Inputs General'!$A$41,H$90,IF('DNSP Inputs General'!$B56='DNSP Inputs General'!$A$42,H$91,H$92))*'DNSP Inputs General'!$D56*'DNSP Inputs General'!O56","v":17266.037461878441},null,null,{"$f":"D110/'Charges Summary'!D$4","v":11583.350546632308},{"$f":"E110/'Charges Summary'!E$4","v":11452.759687695154},{"$f":"F110/'Charges Summary'!F$4","v":13276.673589806662},{"$f":"G110/'Charges Summary'!G$4","v":14686.678079106028},{"$f":"H110/'Charges Summary'!H$4","v":15650.661980873474}]
[{"$f":"'DNSP Inputs General'!A$57","v":"Metal halide 400 watt"},null,null,{"$f":"IF('DNSP Inputs General'!$B57='DNSP Inputs General'!$A$41,D$90,IF('DNSP Inputs General'!$B57='DNSP Inputs General'!$A$42,D$91,D$92))*'DNSP Inputs General'!$D57*'DNSP Inputs General'!K57","v":0},{"$f":"IF('DNSP Inputs General'!$B57='DNSP Inputs General'!$A$41,E$90,IF('DNSP Inputs General'!$B57='DNSP Inputs General'!$A$42,E$91,E$92))*'DNSP Inputs General'!$D57*'DNSP Inputs General'!L57","v":0},{"$f":"IF('DNSP Inputs General'!$B57='DNSP Inputs General'!$A$41,F$90,IF('DNSP Inputs General'!$B57='DNSP Inputs General'!$A$42,F$91,F$92))*'DNSP Inputs General'!$D57*'DNSP Inputs General'!M57","v":0},{"$f":"IF('DNSP Inputs General'!$B57='DNSP Inputs General'!$A$41,G$90,IF('DNSP Inputs General'!$B57='DNSP Inputs General'!$A$42,G$91,G$92))*'DNSP Inputs General'!$D57*'DNSP Inputs General'!N57","v":0},{"$f":"IF('DNSP Inputs General'!$B57='DNSP Inputs General'!$A$41,H$90,IF('DNSP Inputs General'!$B57='DNSP Inputs General'!$A$42,H$91,H$92))*'DNSP Inputs General'!$D57*'DNSP Inputs General'!O57","v":0},null,null,{"$f":"D111/'Charges Summary'!D$4","v":0},{"$f":"E111/'Charges Summary'!E$4","v":0},{"$f":"F111/'Charges Summary'!F$4","v":0},{"$f":"G111/'Charges Summary'!G$4","v":0},{"$f":"H111/'Charges Summary'!H$4","v":0}]
[{"$f":"'DNSP Inputs General'!A$58","v":"Metal halide 70 watt"},null,null,{"$f":"IF('DNSP Inputs General'!$B58='DNSP Inputs General'!$A$41,D$90,IF('DNSP Inputs General'!$B58='DNSP Inputs General'!$A$42,D$91,D$92))*'DNSP Inputs General'!$D58*'DNSP Inputs General'!K58","v":399.42076546815923},{"$f":"IF('DNSP Inputs General'!$B58='DNSP Inputs General'!$A$41,E$90,IF('DNSP Inputs General'!$B58='DNSP Inputs General'!$A$42,E$91,E$92))*'DNSP Inputs General'!$D58*'DNSP Inputs General'!L58","v":396.67480620045916},{"$f":"IF('DNSP Inputs General'!$B58='DNSP Inputs General'!$A$41,F$90,IF('DNSP Inputs General'!$B58='DNSP Inputs General'!$A$42,F$91,F$92))*'DNSP Inputs General'!$D58*'DNSP Inputs General'!M58","v":468.22214368400779},{"$f":"IF('DNSP Inputs General'!$B58='DNSP Inputs General'!$A$41,G$90,IF('DNSP Inputs General'!$B58='DNSP Inputs General'!$A$42,G$91,G$92))*'DNSP Inputs General'!$D58*'DNSP Inputs General'!N58","v":528.93197417319527},{"$f":"IF('DNSP Inputs General'!$B58='DNSP Inputs General'!$A$41,H$90,IF('DNSP Inputs General'!$B58='DNSP Inputs General'!$A$42,H$91,H$92))*'DNSP Inputs General'!$D58*'DNSP Inputs General'!O58","v":575.49871074361795},null,null,{"$f":"D112/'Charges Summary'!D$4","v":390.35256382715892},{"$f":"E112/'Charges Summary'!E$4","v":383.74228190749272},{"$f":"F112/'Charges Summary'!F$4","v":444.36432884668289},{"$f":"G112/'Charges Summary'!G$4","v":490.58408761221244},{"$f":"H112/'Charges Summary'!H$4","v":521.65621742470967}]
[{"$f":"'DNSP Inputs General'!A$59","v":"Metal halide 150 watt"},null,null,{"$f":"IF('DNSP Inputs General'!$B59='DNSP Inputs General'!$A$41,D$90,IF('DNSP Inputs General'!$B59='DNSP Inputs General'!$A$42,D$91,D$92))*'DNSP Inputs General'!$D59*'DNSP Inputs General'!K59","v":1583.0524137367674},{"$f":"IF('DNSP Inputs General'!$B59='DNSP Inputs General'!$A$41,E$90,IF('DNSP Inputs General'!$B59='DNSP Inputs General'!$A$42,E$91,E$92))*'DNSP Inputs General'!$D59*'DNSP Inputs General'!L59","v":1573.8042264207982},{"$f":"IF('DNSP Inputs General'!$B59='DNSP Inputs General'!$A$41,F$90,IF('DNSP Inputs General'!$B59='DNSP Inputs General'!$A$42,F$91,F$92))*'DNSP Inputs General'!$D59*'DNSP Inputs General'!M59","v":1858.0402406631972},{"$f":"IF('DNSP Inputs General'!$B59='DNSP Inputs General'!$A$41,G$90,IF('DNSP Inputs General'!$B59='DNSP Inputs General'!$A$42,G$91,G$92))*'DNSP Inputs General'!$D59*'DNSP Inputs General'!N59","v":2099.7100924551619},{"$f":"IF('DNSP Inputs General'!$B59='DNSP Inputs General'!$A$41,H$90,IF('DNSP Inputs General'!$B59='DNSP Inputs General'!$A$42,H$91,H$92))*'DNSP Inputs General'!$D59*'DNSP Inputs General'!O59","v":2285.4657583777175},null,null,{"$f":"D113/'Charges Summary'!D$4","v":1547.111772345198},{"$f":"E113/'Charges Summary'!E$4","v":1522.4945362856633},{"$f":"F113/'Charges Summary'!F$4","v":1763.3655640807124},{"$f":"G113/'Charges Summary'!G$4","v":1947.4798466616721},{"$f":"H113/'Charges Summary'!H$4","v":2071.6422127662199}]
[]
[]
[]
[]
[]
[{"$f":"'DNSP Inputs General'!A$67","v":"Energy Efficient Lights"}]
[{"$f":"'DNSP Inputs General'!A$68","v":"T5 2X14W"},null,null,{"$f":"SUM('Charges Summary'!D85,'Charges Summary'!D11)*'DNSP Inputs General'!$D68*'DNSP Inputs General'!K68","v":140435.75313846409},{"$f":"SUM('Charges Summary'!E85,'Charges Summary'!E11)*'DNSP Inputs General'!$D68*'DNSP Inputs General'!L68","v":112569.0634126231},{"$f":"SUM('Charges Summary'!F85,'Charges Summary'!F11)*'DNSP Inputs General'!$D68*'DNSP Inputs General'!M68","v":122198.3118192197},{"$f":"SUM('Charges Summary'!G85,'Charges Summary'!G11)*'DNSP Inputs General'!$D68*'DNSP Inputs General'!N68","v":124599.81269732257},{"$f":"SUM('Charges Summary'!H85,'Charges Summary'!H11)*'DNSP Inputs General'!$D68*'DNSP Inputs General'!O68","v":121821.13923177565},null,null,{"$f":"D120/'Charges Summary'!D$4","v":137247.38679107933},{"$f":"E120/'Charges Summary'!E$4","v":108899.04927392698},{"$f":"F120/'Charges Summary'!F$4","v":115971.81284615071},{"$f":"G120/'Charges Summary'!G$4","v":115566.25126382137},{"$f":"H120/'Charges Summary'!H$4","v":110423.80027559726}]
[{"$f":"'DNSP Inputs General'!A$69","v":"T5 2X24W"},null,null,{"$f":"SUM('Charges Summary'!D$85,'Charges Summary'!D$11)*'DNSP Inputs General'!$D69*'DNSP Inputs General'!K69","v":19172.515515292824},{"$f":"SUM('Charges Summary'!E$85,'Charges Summary'!E$11)*'DNSP Inputs General'!$D69*'DNSP Inputs General'!L69","v":15368.110090117625},{"$f":"SUM('Charges Summary'!F$85,'Charges Summary'!F$11)*'DNSP Inputs General'!$D69*'DNSP Inputs General'!M69","v":16682.710612778385},{"$f":"SUM('Charges Summary'!G$85,'Charges Summary'!G$11)*'DNSP Inputs General'!$D69*'DNSP Inputs General'!N69","v":17010.567385832612},{"$f":"SUM('Charges Summary'!H$85,'Charges Summary'!H$11)*'DNSP Inputs General'!$D69*'DNSP Inputs General'!O69","v":16631.218402831077},null,null,{"$f":"D121/'Charges Summary'!D$4","v":18737.234599304138},{"$f":"E121/'Charges Summary'!E$4","v":14867.073840850533},{"$f":"F121/'Charges Summary'!F$4","v":15832.658930786703},{"$f":"G121/'Charges Summary'!G$4","v":15777.29100947147},{"$f":"H121/'Charges Summary'!H$4","v":15075.235306739201}]
[{"$f":"'DNSP Inputs General'!A$70","v":"CF32"},null,null,{"$f":"SUM('Charges Summary'!D$85,'Charges Summary'!D$11)*'DNSP Inputs General'!$D70*'DNSP Inputs General'!K70","v":39100.939564656837},{"$f":"SUM('Charges Summary'!E$85,'Charges Summary'!E$11)*'DNSP Inputs General'!$D70*'DNSP Inputs General'!L70","v":31342.133658849954},{"$f":"SUM('Charges Summary'!F$85,'Charges Summary'!F$11)*'DNSP Inputs General'!$D70*'DNSP Inputs General'!M70","v":34023.165031453304},{"$f":"SUM('Charges Summary'!G$85,'Charges Summary'!G$11)*'DNSP Inputs General'!$D70*'DNSP Inputs General'!N70","v":34691.804879929696},{"$f":"SUM('Charges Summary'!H$85,'Charges Summary'!H$11)*'DNSP Inputs General'!$D70*'DNSP Inputs General'!O70","v":33918.150444943029},null,null,{"$f":"D122/'Charges Summary'!D$4","v":38213.216053563767},{"$f":"E122/'Charges Summary'!E$4","v":30320.30696705939},{"$f":"F122/'Charges Summary'!F$4","v":32289.546956251867},{"$f":"G122/'Charges Summary'!G$4","v":32176.628140594068},{"$f":"H122/'Charges Summary'!H$4","v":30744.83701325551}]
[{"$f":"'DNSP Inputs General'!A$71","v":"CF42"},null,null,{"$f":"SUM('Charges Summary'!D$85,'Charges Summary'!D$11)*'DNSP Inputs General'!$D71*'DNSP Inputs General'!K71","v":57151.421862876537},{"$f":"SUM('Charges Summary'!E$85,'Charges Summary'!E$11)*'DNSP Inputs General'!$D71*'DNSP Inputs General'!L71","v":45810.855768762565},{"$f":"SUM('Charges Summary'!F$85,'Charges Summary'!F$11)*'DNSP Inputs General'!$D71*'DNSP Inputs General'!M71","v":49729.553291360215},{"$f":"SUM('Charges Summary'!G$85,'Charges Summary'!G$11)*'DNSP Inputs General'!$D71*'DNSP Inputs General'!N71","v":50706.862749395477},{"$f":"SUM('Charges Summary'!H$85,'Charges Summary'!H$11)*'DNSP Inputs General'!$D71*'DNSP Inputs General'!O71","v":49576.059973751318},null,null,{"$f":"D123/'Charges Summary'!D$4","v":55853.89138292017},{"$f":"E123/'Charges Summary'!E$4","v":44317.314974513814},{"$f":"F123/'Charges Summary'!F$4","v":47195.631112812305},{"$f":"G123/'Charges Summary'!G$4","v":47030.584672962854},{"$f":"H123/'Charges Summary'!H$4","v":44937.82425213619}]
[{"$f":"'DNSP Inputs General'!A$72","v":"Category P LED 18 Watt"},null,null,{"$f":"SUM('Charges Summary'!D103,'Charges Summary'!D11)*'DNSP Inputs General'!$D72*'DNSP Inputs General'!K72","v":518106.5177047872},{"$f":"SUM('Charges Summary'!E103,'Charges Summary'!E11)*'DNSP Inputs General'!$D72*'DNSP Inputs General'!L72","v":601653.77428920614},{"$f":"SUM('Charges Summary'!F103,'Charges Summary'!F11)*'DNSP Inputs General'!$D72*'DNSP Inputs General'!M72","v":718179.25430838799},{"$f":"SUM('Charges Summary'!G103,'Charges Summary'!G11)*'DNSP Inputs General'!$D72*'DNSP Inputs General'!N72","v":805731.42701405101},{"$f":"SUM('Charges Summary'!H103,'Charges Summary'!H11)*'DNSP Inputs General'!$D72*'DNSP Inputs General'!O72","v":867142.41902922036},null,null,{"$f":"D124/'Charges Summary'!D$4","v":506343.74826400296},{"$f":"E124/'Charges Summary'!E$4","v":582038.45733353833},{"$f":"F124/'Charges Summary'!F$4","v":681585.11218925519},{"$f":"G124/'Charges Summary'!G$4","v":747315.41348026483},{"$f":"H124/'Charges Summary'!H$4","v":786014.33128286467}]
[{"$f":"'DNSP Inputs General'!A$73","v":"Category P LED 47 Watt"},null,null,{"$f":"SUM('Charges Summary'!D$103,'Charges Summary'!D$11)*'DNSP Inputs General'!$D73*'DNSP Inputs General'!K73","v":0},{"$f":"SUM('Charges Summary'!E$103,'Charges Summary'!E$11)*'DNSP Inputs General'!$D73*'DNSP Inputs General'!L73","v":0},{"$f":"SUM('Charges Summary'!F$103,'Charges Summary'!F$11)*'DNSP Inputs General'!$D73*'DNSP Inputs General'!M73","v":0},{"$f":"SUM('Charges Summary'!G$103,'Charges Summary'!G$11)*'DNSP Inputs General'!$D73*'DNSP Inputs General'!N73","v":0},{"$f":"SUM('Charges Summary'!H$103,'Charges Summary'!H$11)*'DNSP Inputs General'!$D73*'DNSP Inputs General'!O73","v":0},null,null,{"$f":"D125/'Charges Summary'!D$4","v":0},{"$f":"E125/'Charges Summary'!E$4","v":0},{"$f":"F125/'Charges Summary'!F$4","v":0},{"$f":"G125/'Charges Summary'!G$4","v":0},{"$f":"H125/'Charges Summary'!H$4","v":0}]
[]
["Total Capital Charge",null,null,{"$f":"SUM(D95:D126)","v":3263839.8727753046},{"$f":"SUM(E95:E126)","v":3026581.1130740666},{"$f":"SUM(F95:F126)","v":3433058.9375491492},{"$f":"SUM(G95:G126)","v":3725455.9128198461},{"$f":"SUM(H95:H126)","v":3906059.5175507627},null,null,{"$f":"SUM(K95:K126)","v":3189739.6740648728},{"$f":"SUM(L95:L126)","v":2927907.5064884154},{"$f":"SUM(M95:M126)","v":3258130.6784684616},{"$f":"SUM(N95:N126)","v":3455358.1163005922},{"$f":"SUM(O95:O126)","v":3540616.5034296094}]
[]
["Check",null,{"$f":"SUM(D129:O129)","v":1.3969838619232178E-8},{"$f":"ABS(D39-SUM(D83,D127))","v":1.862645149230957E-9},{"$f":"ABS(E39-SUM(E83,E127))","v":1.862645149230957E-9},{"$f":"ABS(F39-SUM(F83,F127))","v":0},{"$f":"ABS(G39-SUM(G83,G127))","v":1.862645149230957E-9},{"$f":"ABS(H39-SUM(H83,H127))","v":3.7252902984619141E-9},null,null,{"$f":"ABS(K39-SUM(K83,K127))","v":0},{"$f":"ABS(L39-SUM(L83,L127))","v":9.3132257461547852E-10},{"$f":"ABS(M39-SUM(M83,M127))","v":1.862645149230957E-9},{"$f":"ABS(N39-SUM(N83,N127))","v":1.862645149230957E-9},{"$f":"ABS(O39-SUM(O83,O127))","v":0}]
[]
["Public Lighting - Capital Expenditure",null,null,"Forecast Capital Expenditure - Nominal ",null,null,null,null,null,null,"Forecast Capital Expenditure - Real 2015 $ "]
[null,null,null,{"$f":"D$2","v":2016},2017,2018,2019,2020,null,null,{"$f":"K$2","v":2016},2017,2018,2019,2020]
[]
["Total Capital Expenditure",null,null,{"$f":"K134*'Charges Summary'!D$4","v":2207694.0035615293},{"$f":"L134*'Charges Summary'!E$4","v":2076601.0540612049},{"$f":"M134*'Charges Summary'!F$4","v":2604452.748003121},{"$f":"N134*'Charges Summary'!G$4","v":2689766.8844242194},{"$f":"O134*'Charges Summary'!H$4","v":2784323.9253066406},null,null,{"$f":"'DNSP Inputs General'!K14","v":2157571.8864441128},{"$f":"'DNSP Inputs General'!L14","v":2008899.0141064045},{"$f":"'DNSP Inputs General'!M14","v":2471745.3306957609},{"$f":"'DNSP Inputs General'!N14","v":2494757.1659805137},{"$f":"'DNSP Inputs General'!O14","v":2523828.2203687616}]
["Check",null,{"$f":"SUM(D135:H135)","v":9.3132257461547852E-10},{"$f":"ABS(D134-D142)","v":0},{"$f":"ABS(E134-E142)","v":0},{"$f":"ABS(F134-F142)","v":4.6566128730773926E-10},{"$f":"ABS(G134-G142)","v":4.6566128730773926E-10},{"$f":"ABS(H134-H142)","v":0}]
[]
[]
["Public Lighting - RAB",null,null,"RAB - Historical Cost ($)"]
[null,null,null,{"$f":"D$2","v":2016},2017,2018,2019,2020]
[]
["Opening RAB",null,null,{"$f":"'Total RAB'!N139","v":26305536.322667759},{"$f":"D144","v":27055986.149877597},{"$f":"E144","v":27585373.496734563},28543011.111125715,29471446.50425927]
["Capex",null,null,{"$f":"'Total RAB'!N140","v":2207694.0035615293},{"$f":"'Total RAB'!O140","v":2076601.0540612049},{"$f":"'Total RAB'!P140","v":2604452.7480031215},{"$f":"'Total RAB'!Q140","v":2689766.8844242189},{"$f":"'Total RAB'!R140","v":2784323.9253066406}]
["Depreciation",null,null,{"$f":"'Total RAB'!N141","v":1457244.1763516921},{"$f":"'Total RAB'!O141","v":1547213.7072042385},{"$f":"'Total RAB'!P141","v":1646815.1336119678},{"$f":"'Total RAB'!Q141","v":1761331.4912906629},{"$f":"'Total RAB'!R141","v":1879881.6004703874}]
["Closing RAB",null,null,{"$f":"D141+D142-D143","v":27055986.149877597},{"$f":"E141+E142-E143","v":27585373.496734563},{"$f":"F141+F142-F143","v":28543011.111125715},{"$f":"G141+G142-G143","v":29471446.50425927},{"$f":"H141+H142-H143","v":30375888.829095524}]
[]
["Average RAB",null,null,{"$f":"SUM(D141,D144)/2","v":26680761.236272678},{"$f":"SUM(E141,E144)/2","v":27320679.82330608},{"$f":"SUM(F141,F144)/2","v":28064192.303930141},{"$f":"SUM(G141,G144)/2","v":29007228.807692491},{"$f":"SUM(H141,H144)/2","v":29923667.666677397}]
[]
[{"$f":"WACC!A$8","v":"Nominal Pre Tax WACC"},null,null,{"$f":"WACC!E$8","v":6.7711549922628622E-2},{"$f":"WACC!F$8","v":5.4148264810301105E-2},{"$f":"WACC!G$8","v":6.3648502140823515E-2},{"$f":"WACC!H$8","v":6.7711549922628622E-2},{"$f":"WACC!I$8","v":6.7711549922628622E-2}]
[]
["Capital Charge",null,null,"Capital Charge - Nominal "]
[null,null,null,{"$f":"D$2","v":2016},2017,2018,2019,2020]
[]
["Depreciation",null,null,{"$f":"D143","v":1457244.1763516921},{"$f":"E143","v":1547213.7072042385},{"$f":"F143","v":1646815.1336119678},{"$f":"G143","v":1761331.4912906629},{"$f":"H143","v":1879881.6004703874}]
["Return",null,null,{"$f":"D148*D146","v":1806595.6964236121},{"$f":"E148*E146","v":1479367.4058698281},{"$f":"F148*F146","v":1786243.8039371804},{"$f":"G148*G146","v":1964124.4215291813},{"$f":"H148*H146","v":2026177.9170803744}]
[]
[null,null,null,{"$f":"SUM(D153:D155)","v":3263839.8727753041},{"$f":"SUM(E153:E155)","v":3026581.1130740666},{"$f":"SUM(F153:F155)","v":3433058.9375491482},{"$f":"SUM(G153:G155)","v":3725455.9128198442},{"$f":"SUM(H153:H155)","v":3906059.5175507618}]
[]
["Check",null,{"$f":"SUM(D158:H158)","v":4.1909515857696533E-9},{"$f":"ABS(D127-D156)*IF('DNSP Inputs General'!K77=0,0,1)","v":4.6566128730773926E-10},{"$f":"ABS(E127-E156)*IF('DNSP Inputs General'!L77=0,0,1)","v":0},{"$f":"ABS(F127-F156)*IF('DNSP Inputs General'!M77=0,0,1)","v":9.3132257461547852E-10},{"$f":"ABS(G127-G156)*IF('DNSP Inputs General'!N77=0,0,1)","v":1.862645149230957E-9},{"$f":"ABS(H127-H156)*IF('DNSP Inputs General'!O77=0,0,1)","v":9.3132257461547852E-10}]

{"sheet":"Charges Summary","index":7,"n_rows":107,"n_cols":8,"rows_kept":107,"cut":false,"hidden":false,"merged":[]}
[{"$f":"'DNSP Inputs O & M'!$A$3","v":"Powercor"},null,null,{"$f":"'DNSP Inputs General'!K$2","v":2016},{"$f":"'DNSP Inputs General'!L$2","v":2017},{"$f":"'DNSP Inputs General'!M$2","v":2018},{"$f":"'DNSP Inputs General'!N$2","v":2019},{"$f":"'DNSP Inputs General'!O$2","v":2020}]
["Nominal $"]
[]
[{"$f":"'Total RAB'!A20","v":"CPI Index"},null,null,{"$f":"(1+WACC!E6)","v":1.0232307982099371},{"$f":"D4*(1+WACC!F6)","v":1.0337010668427828},{"$f":"E4*(1+WACC!G6)","v":1.0536897615054885},{"$f":"F4*(1+WACC!H6)","v":1.0781678157308994},{"$f":"G4*(1+WACC!I6)","v":1.1032145146945926}]
[]
[{"$f":"'DNSP Inputs General'!$A$6","v":"Poles and Brackets"},null,null,{"$f":"'DNSP Inputs General'!F$2","v":2011},{"$f":"'DNSP Inputs General'!G$2","v":2012},{"$f":"'DNSP Inputs General'!H$2","v":2013},{"$f":"'DNSP Inputs General'!I$2","v":2014},{"$f":"'DNSP Inputs General'!J$2","v":2015}]
["O & M"]
[{"$f":"'O & M 2016-2020'!A$10","v":"Dedicated poles - inspection"},null,null,{"$f":"'O & M 2016-2020'!$B$10*D$4","v":1.8777513024110195},{"$f":"'O & M 2016-2020'!$Y$10*E$4","v":1.9023200733107728},{"$f":"'O & M 2016-2020'!$AV$10*F$4","v":1.9508021959532218},{"$f":"'O & M 2016-2020'!$BS$10*G$4","v":2.0107799777930007},{"$f":"'O & M 2016-2020'!$CP$10*H$4","v":2.0735821069827831}]
[]
["Capital Charge"]
["Depreciation and Return",null,null,{"$f":"'Depn & WACC Post 2004'!H$81","v":10.255600574834897},{"$f":"'Depn & WACC Post 2004'!H$131","v":8.7700780377031453},{"$f":"'Depn & WACC Post 2004'!H$181","v":9.8774917557263162},{"$f":"'Depn & WACC Post 2004'!H$231","v":10.399488334639189},{"$f":"'Depn & WACC Post 2004'!H$281","v":10.463580792361318}]
[]
["Total Charge",null,null,{"$f":"SUM(D8,D11)","v":12.133351877245916},{"$f":"SUM(E8,E11)","v":10.672398111013917},{"$f":"SUM(F8,F11)","v":11.828293951679537},{"$f":"SUM(G8,G11)","v":12.410268312432191},{"$f":"SUM(H8,H11)","v":12.537162899344102}]
[]
[]
[]
[]
[{"$f":"'DNSP Inputs General'!$A$8","v":"Existing Lights"}]
[]
[{"$f":"'O & M 2016-2020'!$A$8","v":"MV80"},null,null,{"$f":"D$1","v":2016},{"$f":"E$1","v":2017},2018,2019,2020]
[]
["O & M Charge"]
[{"$f":"'O & M 2016-2020'!A$9","v":"Bulk change & repairs"},null,null,{"$f":"'O & M 2016-2020'!$B$9*D$4","v":21.737674044703159},{"$f":"'O & M 2016-2020'!$Y$9*E$4","v":22.157757881628889},{"$f":"'O & M 2016-2020'!$AV$9*F$4","v":22.787043994708622},{"$f":"'O & M 2016-2020'!$BS$9*G$4","v":23.549749183387068},{"$f":"'O & M 2016-2020'!$CP$9*H$4","v":24.353317350630032}]
[{"$f":"'O & M 2016-2020'!A$11","v":"Other costs"},null,null,{"$f":"'O & M 2016-2020'!$B$11*D$4","v":1.3808405098454923},{"$f":"'O & M 2016-2020'!$Y$11*E$4","v":1.3511320811326792},{"$f":"'O & M 2016-2020'!$AV$11*F$4","v":1.3782586385251832},{"$f":"'O & M 2016-2020'!$BS$11*G$4","v":1.4037811278821644},{"$f":"'O & M 2016-2020'!$CP$11*H$4","v":1.4225623125153593}]
[null,null,null,{"$f":"SUM(D23:D24)","v":23.11851455454865},{"$f":"SUM(E23:E24)","v":23.508889962761568},{"$f":"SUM(F23:F24)","v":24.165302633233804},{"$f":"SUM(G23:G24)","v":24.953530311269233},{"$f":"SUM(H23:H24)","v":25.775879663145393}]
["Capital Charge"]
["Depreciation and Return",null,null,{"$f":"'Depn & WACC Post 2004'!H$40","v":12.833372641739237},{"$f":"'Depn & WACC Post 2004'!H$90","v":13.710549322173586},{"$f":"'Depn & WACC Post 2004'!H$140","v":16.137613404824155},{"$f":"'Depn & WACC Post 2004'!H$190","v":18.412503706580203},{"$f":"'Depn & WACC Post 2004'!H$240","v":20.27031739973123}]
[]
["Poles & Brackets Charge",null,null,{"$f":"D$13","v":12.133351877245916},{"$f":"E$13","v":10.672398111013917},{"$f":"F$13","v":11.828293951679537},{"$f":"G$13","v":12.410268312432191},{"$f":"H$13","v":12.537162899344102}]
[]
["Total Charge",null,null,{"$f":"SUM(D25,D27,D29)","v":48.085239073533799},{"$f":"SUM(E25,E27,E29)","v":47.891837395949075},{"$f":"SUM(F25,F27,F29)","v":52.131209989737499},{"$f":"SUM(G25,G27,G29)","v":55.776302330281624},{"$f":"SUM(H25,H27,H29)","v":58.583359962220726}]
[]
["WDV RAB - MV 80 Luminaire"]
["RAB WDV",null,null,{"$f":"MAX(0,'Depn & WACC Post 2004'!$I$8)","v":72.031619158125579},{"$f":"MAX(0,'Depn & WACC Post 2004'!I$40)","v":82.690944895229762},{"$f":"MAX(0,'Depn & WACC Post 2004'!I$90)","v":93.631881971665067},{"$f":"MAX(0,'Depn & WACC Post 2004'!I$140)","v":104.34913578933963},{"$f":"MAX(0,'Depn & WACC Post 2004'!I$190)","v":114.70658825584876}]
[]
["Avoided Costs - MV 80 O & M"]
["Materials & labour - bulk lamp change",null,null,{"$f":"'O & M 2016-2020'!$G$9*D$4","v":-23.898842813878094},{"$f":"'O & M 2016-2020'!$AD$9*E$4","v":-24.210596963810577},{"$f":"'O & M 2016-2020'!$BA$9*F$4","v":-24.795925754448071},{"$f":"'O & M 2016-2020'!$BX$9*G$4","v":-25.514657312091007},{"$f":"'O & M 2016-2020'!$CU$9*H$4","v":-26.26327268723248}]
["Materials & Labour - repair of faults",null,null,{"$f":"'O & M 2016-2020'!$G$10*D$4","v":-2.7203589144117393},{"$f":"'O & M 2016-2020'!$AD$10*E$4","v":-2.8104539116989109},{"$f":"'O & M 2016-2020'!$BA$10*F$4","v":-2.9158361592714312},{"$f":"'O & M 2016-2020'!$BX$10*G$4","v":-3.0412353453320762},{"$f":"'O & M 2016-2020'!$CU$10*H$4","v":-3.1755087684438918}]
[null,null,null,{"$f":"SUM(D37:D38)","v":-26.619201728289834},{"$f":"SUM(E37:E38)","v":-27.021050875509488},{"$f":"SUM(F37:F38)","v":-27.711761913719503},{"$f":"SUM(G37:G38)","v":-28.555892657423083},{"$f":"SUM(H37:H38)","v":-29.43878145567637}]
[]
[]
[]
[]
[{"$f":"'O & M 2016-2020'!$A$14","v":"S-HP 150"},null,null,{"$f":"D$1","v":2016},{"$f":"E$1","v":2017},2018,2019,2020]
[]
["O & M Charge"]
[{"$f":"'O & M 2016-2020'!A$15","v":"Patrols and repairs"},null,null,{"$f":"'O & M 2016-2020'!$B$15*D$4","v":64.044528841762585},{"$f":"'O & M 2016-2020'!$Y$15*E$4","v":65.015659628889637},{"$f":"'O & M 2016-2020'!$AV$15*F$4","v":66.768134827096631},{"$f":"'O & M 2016-2020'!$BS$15*G$4","v":68.883297548646865},{"$f":"'O & M 2016-2020'!$CP$15*H$4","v":71.083781487610892}]
[{"$f":"'O & M 2016-2020'!A$17","v":"Other costs"},null,null,{"$f":"'O & M 2016-2020'!$B$17*D$4","v":1.3808405098454923},{"$f":"'O & M 2016-2020'!$Y$17*E$4","v":1.3511320811326792},{"$f":"'O & M 2016-2020'!$AV$17*F$4","v":1.3782586385251832},{"$f":"'O & M 2016-2020'!$BS$17*G$4","v":1.4037811278821644},{"$f":"'O & M 2016-2020'!$CP$17*H$4","v":1.4225623125153593}]
[null,null,null,{"$f":"SUM(D47:D48)","v":65.425369351608083},{"$f":"SUM(E47:E48)","v":66.366791710022312},{"$f":"SUM(F47:F48)","v":68.146393465621813},{"$f":"SUM(G47:G48)","v":70.287078676529035},{"$f":"SUM(H47:H48)","v":72.506343800126245}]
["Capital Charge"]
["Depreciation and Return",null,null,{"$f":"'Depn & WACC Post 2004'!H$41","v":13.082928302310425},{"$f":"'Depn & WACC Post 2004'!H$91","v":13.97716241667383},{"$f":"'Depn & WACC Post 2004'!H$141","v":16.451422789598439},{"$f":"'Depn & WACC Post 2004'!H$191","v":18.770550235231646},{"$f":"'Depn & WACC Post 2004'!H$241","v":20.664490668901728}]
[]
["Poles & Brackets Charge",null,null,{"$f":"D$13","v":12.133351877245916},{"$f":"E$13","v":10.672398111013917},{"$f":"F$13","v":11.828293951679537},{"$f":"G$13","v":12.410268312432191},{"$f":"H$13","v":12.537162899344102}]
[]
["Total Charge",null,null,{"$f":"SUM(D49,D51,D53)","v":90.641649531164418},{"$f":"SUM(E49,E51,E53)","v":91.016352237710066},{"$f":"SUM(F49,F51,F53)","v":96.426110206899793},{"$f":"SUM(G49,G51,G53)","v":101.46789722419287},{"$f":"SUM(H49,H51,H53)","v":105.70799736837206}]
[]
[]
[]
[]
[{"$f":"'O & M 2016-2020'!$A$20","v":"S-HP 250"},null,null,{"$f":"D$1","v":2016},{"$f":"E$1","v":2017},2018,2019,2020]
[]
["O & M Charge"]
[{"$f":"'O & M 2016-2020'!A$21","v":"Patrols and repairs"},null,null,{"$f":"'O & M 2016-2020'!$B$21*D$4","v":64.026443484956616},{"$f":"'O & M 2016-2020'!$Y$21*E$4","v":64.997775149765204},{"$f":"'O & M 2016-2020'!$AV$21*F$4","v":66.749790637803002},{"$f":"'O & M 2016-2020'!$BS$21*G$4","v":68.86453294505398},{"$f":"'O & M 2016-2020'!$CP$21*H$4","v":71.06469736207616}]
[{"$f":"'O & M 2016-2020'!A$23","v":"Other costs"},null,null,{"$f":"'O & M 2016-2020'!$B$23*D$4","v":1.3808405098454923},{"$f":"'O & M 2016-2020'!$Y$23*E$4","v":1.3511320811326792},{"$f":"'O & M 2016-2020'!$AV$23*F$4","v":1.3782586385251832},{"$f":"'O & M 2016-2020'!$BS$23*G$4","v":1.4037811278821644},{"$f":"'O & M 2016-2020'!$CP$23*H$4","v":1.4225623125153593}]
[null,null,null,{"$f":"SUM(D63:D64)","v":65.407283994802114},{"$f":"SUM(E63:E64)","v":66.348907230897879},{"$f":"SUM(F63:F64)","v":68.128049276328184},{"$f":"SUM(G63:G64)","v":70.26831407293615},{"$f":"SUM(H63:H64)","v":72.487259674591513}]
["Capital Charge"]
["Depreciation and Return",null,null,{"$f":"'Depn & WACC Post 2004'!H$42","v":14.286175680443268},{"$f":"'Depn & WACC Post 2004'!H$92","v":15.262653221406715},{"$f":"'Depn & WACC Post 2004'!H$142","v":17.964473299448247},{"$f":"'Depn & WACC Post 2004'!H$192","v":20.496892750818521},{"$f":"'Depn & WACC Post 2004'!H$242","v":22.565020400721448}]
[]
["Poles & Brackets Charge",null,null,{"$f":"D$13","v":12.133351877245916},{"$f":"E$13","v":10.672398111013917},{"$f":"F$13","v":11.828293951679537},{"$f":"G$13","v":12.410268312432191},{"$f":"H$13","v":12.537162899344102}]
[]
["Total Charge",null,null,{"$f":"SUM(D65,D67,D69)","v":91.826811552491293},{"$f":"SUM(E65,E67,E69)","v":92.283958563318507},{"$f":"SUM(F65,F67,F69)","v":97.920816527455969},{"$f":"SUM(G65,G67,G69)","v":103.17547513618686},{"$f":"SUM(H65,H67,H69)","v":107.58944297465706}]
[]
[]
[]
[]
[{"$f":"'DNSP Inputs General'!$A$11","v":"Energy Efficient Lights"}]
[]
[{"$f":"'O & M 2016-2020'!$A$26","v":"T5 (2 X 14W)"},null,null,{"$f":"D$1","v":2016},{"$f":"E$1","v":2017},2018,2019,2020]
[]
["O & M Charge"]
[{"$f":"'O & M 2016-2020'!A$27","v":"Bulk change & repairs"},null,null,{"$f":"'O & M 2016-2020'!$B$27*D$4","v":22.980620833501149},{"$f":"'O & M 2016-2020'!$Y$27*E$4","v":23.253088076184724},{"$f":"'O & M 2016-2020'!$AV$27*F$4","v":23.812729471429837},{"$f":"'O & M 2016-2020'!$BS$27*G$4","v":24.493238525781649},{"$f":"'O & M 2016-2020'!$CP$27*H$4","v":25.196145705083296}]
[{"$f":"'O & M 2016-2020'!A$29","v":"Other costs"},null,null,{"$f":"'O & M 2016-2020'!$B$29*D$4","v":1.3808405098454923},{"$f":"'O & M 2016-2020'!$Y$29*E$4","v":1.3511320811326792},{"$f":"'O & M 2016-2020'!$AV$29*F$4","v":1.3782586385251832},{"$f":"'O & M 2016-2020'!$BS$29*G$4","v":1.4037811278821644},{"$f":"'O & M 2016-2020'!$CP$29*H$4","v":1.4225623125153593}]
[null,null,null,{"$f":"SUM(D81:D82)","v":24.36146134334664},{"$f":"SUM(E81:E82)","v":24.604220157317403},{"$f":"SUM(F81:F82)","v":25.190988109955018},{"$f":"SUM(G81:G82)","v":25.897019653663815},{"$f":"SUM(H81:H82)","v":26.618708017598657}]
["Capital Charge"]
["Depreciation and Return",null,null,{"$f":"'Depn & WACC Post 2004'!$H$69","v":3.1810416114567204},{"$f":"'Depn & WACC Post 2004'!$H$119","v":2.2201332425068228},{"$f":"'Depn & WACC Post 2004'!$H$169","v":2.2963070304072097},{"$f":"'Depn & WACC Post 2004'!$H$219","v":2.2668833213096762},{"$f":"'Depn & WACC Post 2004'!$H$269","v":2.1730535362551353}]
[]
["Poles & Brackets Charge",null,null,{"$f":"D$13","v":12.133351877245916},{"$f":"E$13","v":10.672398111013917},{"$f":"F$13","v":11.828293951679537},{"$f":"G$13","v":12.410268312432191},{"$f":"H$13","v":12.537162899344102}]
[]
["Total Charge",null,null,{"$f":"SUM(D83,D85,D87)","v":39.675854832049275},{"$f":"SUM(E83,E85,E87)","v":37.496751510838145},{"$f":"SUM(F83,F85,F87)","v":39.315589092041762},{"$f":"SUM(G83,G85,G87)","v":40.574171287405683},{"$f":"SUM(H83,H85,H87)","v":41.328924453197892}]
[]
[]
[]
[]
[{"$f":"'DNSP Inputs General'!$A$11","v":"Energy Efficient Lights"}]
[]
[{"$f":"'O & M 2016-2020'!A32","v":"Category P LED 18 Watt"},null,null,{"$f":"D$1","v":2016},{"$f":"E$1","v":2017},2018,2019,2020]
[]
["O & M Charge"]
[{"$f":"'O & M 2016-2020'!A$27","v":"Bulk change & repairs"},null,null,{"$f":"'O & M 2016-2020'!$B$33*D$4","v":9.1966907475906687},{"$f":"'O & M 2016-2020'!$Y$33*E$4","v":9.3078932006489783},{"$f":"'O & M 2016-2020'!$AV$33*F$4","v":9.5744484984994074},{"$f":"'O & M 2016-2020'!$BS$33*G$4","v":9.8561234905624264},{"$f":"'O & M 2016-2020'!$CP$33*H$4","v":10.149164656785091}]
[{"$f":"'O & M 2016-2020'!A$29","v":"Other costs"},null,null,{"$f":"'O & M 2016-2020'!$B$35*D$4","v":1.3808405098454923},{"$f":"'O & M 2016-2020'!$Y$35*E$4","v":1.3511320811326792},{"$f":"'O & M 2016-2020'!$AV$35*F$4","v":1.3782586385251832},{"$f":"'O & M 2016-2020'!$BS$35*G$4","v":1.4037811278821644},{"$f":"'O & M 2016-2020'!$CP$35*H$4","v":1.4225623125153593}]
[null,null,null,{"$f":"SUM(D99:D100)","v":10.577531257436162},{"$f":"SUM(E99:E100)","v":10.659025281781657},{"$f":"SUM(F99:F100)","v":10.952707137024591},{"$f":"SUM(G99:G100)","v":11.25990461844459},{"$f":"SUM(H99:H100)","v":11.57172696930045}]
["Capital Charge"]
["Depreciation and Return",null,null,{"$f":"'Depn & WACC Post 2004'!$H$73","v":3.7225802720916783},{"$f":"'Depn & WACC Post 2004'!$H$123","v":2.5980874252651298},{"$f":"'Depn & WACC Post 2004'!$H$173","v":2.687228994198779},{"$f":"'Depn & WACC Post 2004'!$H$223","v":2.6527962100994587},{"$f":"'Depn & WACC Post 2004'!$H$273","v":2.5429928973981561}]
[]
["Poles & Brackets Charge",null,null,{"$f":"D$13","v":12.133351877245916},{"$f":"E$13","v":10.672398111013917},{"$f":"F$13","v":11.828293951679537},{"$f":"G$13","v":12.410268312432191},{"$f":"H$13","v":12.537162899344102}]
[]
["Total Charge",null,null,{"$f":"SUM(D101,D103,D105)","v":26.433463406773754},{"$f":"SUM(E101,E103,E105)","v":23.929510818060706},{"$f":"SUM(F101,F103,F105)","v":25.468230082902906},{"$f":"SUM(G101,G103,G105)","v":26.322969140976241},{"$f":"SUM(H101,H103,H105)","v":26.651882766042707}]

{"sheet":"O & M 2016-2020","index":8,"n_rows":234,"n_cols":113,"rows_kept":234,"cut":false,"hidden":false,"merged":[[211,61,211,66],[211,70,211,75],[211,84,211,89],[211,93,211,98],[211,107,211,112],[211,1,211,6],[211,15,211,20],[211,24,211,29],[211,38,211,43],[211,47,211,52],[173,107,173,112],[173,93,173,98],[107,70,107,75],[66,107,66,112],[66,93,66,98],[107,107,107,112],[107,93,107,98],[139,107,139,112],[139,93,139,98],[173,84,173,89],[173,70,173,75],[139,84,139,89],[139,70,139,75],[66,84,66,89],[66,70,66,75],[107,84,107,89],[173,61,173,66],[173,47,173,52],[173,38,173,43],[173,24,173,29],[66,61,66,66],[66,47,66,52],[107,61,107,66],[107,47,107,52],[139,61,139,66],[139,47,139,52],[66,38,66,43],[66,24,66,29],[107,38,107,43],[107,24,107,29],[139,38,139,43],[139,24,139,29],[173,15,173,20],[139,15,139,20],[66,15,66,20],[66,1,66,6],[173,1,173,6],[107,15,107,20],[107,1,107,6],[139,1,139,6],[66,8,66,13]]}
[{"$f":"'DNSP Inputs O & M'!$A$3","v":"Powercor"}]
[]
["Public Lighting O & M Costs","Year",2016,null,null,null,null,null,null,null,null,null,null,null,null,null,null,null,null,null,null,null,null,null,"Year",{"$f":"C3+1","v":2017},null,null,null,null,null,null,null,null,null,null,null,null,null,null,null,null,null,null,null,null,null,"Year",{"$f":"Z3+1","v":2018},null,null,null,null,null,null,null,null,null,null,null,null,null,null,null,null,null,null,null,null,null,"Year",{"$f":"AW3+1","v":2019},null,null,null,null,null,null,null,null,null,null,null,null,null,null,null,null,null,null,null,null,null,"Year",{"$f":"BT3+1","v":2020}]
[{"$f":"'DNSP Inputs O & M'!C5","v":"Real 2015 $ "}]
[]
["Summary"]
[]
[{"$f":"$A$71","v":"MV80"},null,null,"Avoided Costs - MV 80 O & M",null,null,null,null,null,null,null,null,null,null,null,null,null,null,null,null,null,null,null,null,null,null,"Avoided Costs - MV 80 O & M",null,null,null,null,null,null,null,null,null,null,null,null,null,null,null,null,null,null,null,null,null,null,"Avoided Costs - MV 80 O & M",null,null,null,null,null,null,null,null,null,null,null,null,null,null,null,null,null,null,null,null,null,null,"Avoided Costs - MV 80 O & M",null,null,null,null,null,null,null,null,null,null,null,null,null,null,null,null,null,null,null,null,null,null,"Avoided Costs - MV 80 O & M"]
[{"$f":"$A$72","v":"Bulk change & repairs"},{"$f":"G92*C40+N92*C41+U92*C42","v":21.244155358430895},null,"Materials & labour - bulk lamp change",null,null,{"$f":"-((G74+G83)*C40+(N74+N83)*C41+(U74+U83)*C42)*2","v":-23.356258290590223},null,null,null,null,null,null,null,null,null,null,null,null,null,null,null,null,null,{"$f":"AD92*Z40+AK92*Z41+AR92*Z42","v":21.43536327122597},null,"Materials & labour - bulk lamp change",null,null,{"$f":"-((AD74+AD83)*Z40+(AK74+AK83)*Z41+(AR74+AR83)*Z42)*2","v":-23.421275009182903},null,null,null,null,null,null,null,null,null,null,null,null,null,null,null,null,null,{"$f":"BA92*AW40+BH92*AW41+BO92*AW42","v":21.625951800225334},null,"Materials & labour - bulk lamp change",null,null,{"$f":"-((BA74+BA83)*AW40+(BH74+BH83)*AW41+(BO74+BO83)*AW42)*2","v":-23.532472896975104},null,null,null,null,null,null,null,null,null,null,null,null,null,null,null,null,null,{"$f":"BX92*BT40+CE92*BT41+CL92*BT42","v":21.842378189913308},null,"Materials & labour - bulk lamp change",null,null,{"$f":"-((BX74+BX83)*BT40+(CE74+CE83)*BT41+(CL74+CL83)*BT42)*2","v":-23.664829296350678},null,null,null,null,null,null,null,null,null,null,null,null,null,null,null,null,null,{"$f":"CU92*CQ40+DB92*CQ41+DI92*CQ42","v":22.074870323267874},null,"Materials & labour - bulk lamp change",null,null,{"$f":"-((CU74+CU83)*CQ40+(DB74+DB83)*CQ41+(DI74+DI83)*CQ42)*2","v":-23.80613410847214}]
[{"$f":"A94","v":"Dedicated poles - inspection"},{"$f":"(G95*C40+N95*C41+U95*C42)*C44","v":1.8351199999999996},null,"Materials & Labour - repair of faults",null,null,{"$f":"-((G78+G86+G88)*C40+(N78+N86+N88)*C41+(U78+U86+U88)*C42)/2","v":-2.6585975707248024},null,null,null,null,null,null,null,null,null,null,null,null,null,null,null,null,null,{"$f":"(AD95*Z40+AK95*Z41+AR95*Z42)*Z44","v":1.8402999999999996},null,"Materials & Labour - repair of faults",null,null,{"$f":"-((AD78+AD86+AD88)*Z40+(AK78+AK86+AK88)*Z41+(AR78+AR86+AR88)*Z42)/2","v":-2.7188265561946614},null,null,null,null,null,null,null,null,null,null,null,null,null,null,null,null,null,{"$f":"(BA95*AW40+BH95*AW41+BO95*AW42)*AW44","v":1.8514009220000003},null,"Materials & Labour - repair of faults",null,null,{"$f":"-((BA78+BA86+BA88)*AW40+(BH78+BH86+BH88)*AW41+(BO78+BO86+BO88)*AW42)/2","v":-2.7672624958463574},null,null,null,null,null,null,null,null,null,null,null,null,null,null,null,null,null,{"$f":"(BX95*BT40+CE95*BT41+CL95*BT42)*BT44","v":1.8649972188512001},null,"Materials & Labour - repair of faults",null,null,{"$f":"-((BX78+BX86+BX88)*BT40+(CE78+CE86+CE88)*BT41+(CL78+CL86+CL88)*BT42)/2","v":-2.8207439518776547},null,null,null,null,null,null,null,null,null,null,null,null,null,null,null,null,null,{"$f":"(CU95*CQ40+DB95*CQ41+DI95*CQ42)*CQ44","v":1.8795819664834825},null,"Materials & Labour - repair of faults",null,null,{"$f":"-((CU78+CU86+CU88)*CQ40+(DB78+DB86+DB88)*CQ41+(DI78+DI86+DI88)*CQ42)/2","v":-2.8784146021891135}]
["Other costs",{"$f":"IF(C53=0,0,C51/C53)","v":1.3494907622612275},null,null,null,null,{"$f":"SUM(G9:G10)","v":-26.014855861315024},null,null,null,null,null,null,null,null,null,null,null,null,null,null,null,null,null,{"$f":"IF(Z53=0,0,Z51/Z53)","v":1.3070820225226438},null,null,null,null,{"$f":"SUM(AD9:AD10)","v":-26.140101565377563},null,null,null,null,null,null,null,null,null,null,null,null,null,null,null,null,null,{"$f":"IF(AW53=0,0,AW51/AW53)","v":1.3080307780118863},null,null,null,null,{"$f":"SUM(BA9:BA10)","v":-26.299735392821461},null,null,null,null,null,null,null,null,null,null,null,null,null,null,null,null,null,{"$f":"IF(BT53=0,0,BT51/BT53)","v":1.3020061509910021},null,null,null,null,{"$f":"SUM(BX9:BX10)","v":-26.485573248228334},null,null,null,null,null,null,null,null,null,null,null,null,null,null,null,null,null,{"$f":"IF(CQ53=0,0,CQ51/CQ53)","v":1.2894702649096064},null,null,null,null,{"$f":"SUM(CU9:CU10)","v":-26.684548710661254}]
[]
[]
[{"$f":"$A$112","v":"S-HP 150"}]
[{"$f":"$A$113","v":"Patrols and repairs"},{"$f":"G129*E40+N129*E41+U129*E42","v":62.590501530840861},null,null,null,null,null,null,null,null,null,null,null,null,null,null,null,null,null,null,null,null,null,null,{"$f":"AD129*AB40+AK129*AB41+AR129*AB42","v":62.895997415835083},null,null,null,null,null,null,null,null,null,null,null,null,null,null,null,null,null,null,null,null,null,null,{"$f":"BA129*AY40+BH129*AY41+BO129*AY42","v":63.366027901514201},null,null,null,null,null,null,null,null,null,null,null,null,null,null,null,null,null,null,null,null,null,null,{"$f":"BX129*BV40+CE129*BV41+CL129*BV42","v":63.889217006491954},null,null,null,null,null,null,null,null,null,null,null,null,null,null,null,null,null,null,null,null,null,null,{"$f":"CU129*CS40+DB129*CS41+DI129*CS42","v":64.433326919460725}]
[{"$f":"$A$10","v":"Dedicated poles - inspection"},{"$f":"B10","v":1.8351199999999996},null,null,null,null,null,null,null,null,null,null,null,null,null,null,null,null,null,null,null,null,null,null,{"$f":"Y10","v":1.8402999999999996},null,null,null,null,null,null,null,null,null,null,null,null,null,null,null,null,null,null,null,null,null,null,{"$f":"AV10","v":1.8514009220000003},null,null,null,null,null,null,null,null,null,null,null,null,null,null,null,null,null,null,null,null,null,null,{"$f":"BS10","v":1.8649972188512001},null,null,null,null,null,null,null,null,null,null,null,null,null,null,null,null,null,null,null,null,null,null,{"$f":"CP10","v":1.8795819664834825}]
[{"$f":"$A$11","v":"Other costs"},{"$f":"B11","v":1.3494907622612275},null,null,null,null,null,null,null,null,null,null,null,null,null,null,null,null,null,null,null,null,null,null,{"$f":"Y11","v":1.3070820225226438},null,null,null,null,null,null,null,null,null,null,null,null,null,null,null,null,null,null,null,null,null,null,{"$f":"AV11","v":1.3080307780118863},null,null,null,null,null,null,null,null,null,null,null,null,null,null,null,null,null,null,null,null,null,null,{"$f":"BS11","v":1.3020061509910021},null,null,null,null,null,null,null,null,null,null,null,null,null,null,null,null,null,null,null,null,null,null,{"$f":"CP11","v":1.2894702649096064}]
[]
[]
[{"$f":"$A$144","v":"S-HP 250"}]
[{"$f":"$A$145","v":"Patrols and repairs"},{"$f":"G161*G40+N161*G41+U161*G42","v":62.57282677277297},null,null,null,null,null,null,null,null,null,null,null,null,null,null,null,null,null,null,null,null,null,null,{"$f":"AD161*AD40+AK161*AD41+AR161*AD42","v":62.878696012462186},null,null,null,null,null,null,null,null,null,null,null,null,null,null,null,null,null,null,null,null,null,null,{"$f":"BA161*BA40+BH161*BA41+BO161*BA42","v":63.348618422971462},null,null,null,null,null,null,null,null,null,null,null,null,null,null,null,null,null,null,null,null,null,null,{"$f":"BX161*BX40+CE161*BX41+CL161*BX42","v":63.871812847956434},null,null,null,null,null,null,null,null,null,null,null,null,null,null,null,null,null,null,null,null,null,null,{"$f":"CU161*CU40+DB161*CU41+DI161*CU42","v":64.416028266043341}]
[{"$f":"$A$10","v":"Dedicated poles - inspection"},{"$f":"B10","v":1.8351199999999996},null,null,null,null,null,null,null,null,null,null,null,null,null,null,null,null,null,null,null,null,null,null,{"$f":"Y10","v":1.8402999999999996},null,null,null,null,null,null,null,null,null,null,null,null,null,null,null,null,null,null,null,null,null,null,{"$f":"AV10","v":1.8514009220000003},null,null,null,null,null,null,null,null,null,null,null,null,null,null,null,null,null,null,null,null,null,null,{"$f":"BS10","v":1.8649972188512001},null,null,null,null,null,null,null,null,null,null,null,null,null,null,null,null,null,null,null,null,null,null,{"$f":"CP10","v":1.8795819664834825}]
[{"$f":"$A$11","v":"Other costs"},{"$f":"B11","v":1.3494907622612275},null,null,null,null,null,null,null,null,null,null,null,null,null,null,null,null,null,null,null,null,null,null,{"$f":"Y11","v":1.3070820225226438},null,null,null,null,null,null,null,null,null,null,null,null,null,null,null,null,null,null,null,null,null,null,{"$f":"AV11","v":1.3080307780118863},null,null,null,null,null,null,null,null,null,null,null,null,null,null,null,null,null,null,null,null,null,null,{"$f":"BS11","v":1.3020061509910021},null,null,null,null,null,null,null,null,null,null,null,null,null,null,null,null,null,null,null,null,null,null,{"$f":"CP11","v":1.2894702649096064}]
[]
[]
[{"$f":"$A$178","v":"T5 (2 X 14W)"}]
[{"$f":"$A$179","v":"Bulk change & repairs"},{"$f":"G199*I40+N199*I41+U199*I42","v":22.458883053270057},null,null,null,null,null,null,null,null,null,null,null,null,null,null,null,null,null,null,null,null,null,null,{"$f":"AD199*AF40+AK199*AF41+AR199*AF42","v":22.494983145568643},null,null,null,null,null,null,null,null,null,null,null,null,null,null,null,null,null,null,null,null,null,null,{"$f":"BA199*BC40+BH199*BC41+BO199*BC42","v":22.599374447187127},null,null,null,null,null,null,null,null,null,null,null,null,null,null,null,null,null,null,null,null,null,null,{"$f":"BX199*BZ40+CE199*BZ41+CL199*BZ42","v":22.717463986974487},null,null,null,null,null,null,null,null,null,null,null,null,null,null,null,null,null,null,null,null,null,null,{"$f":"CU199*CW40+DB199*CW41+DI199*CW42","v":22.838845364592078}]
[{"$f":"$A$10","v":"Dedicated poles - inspection"},{"$f":"B10","v":1.8351199999999996},null,null,null,null,null,null,null,null,null,null,null,null,null,null,null,null,null,null,null,null,null,null,{"$f":"Y10","v":1.8402999999999996},null,null,null,null,null,null,null,null,null,null,null,null,null,null,null,null,null,null,null,null,null,null,{"$f":"AV10","v":1.8514009220000003},null,null,null,null,null,null,null,null,null,null,null,null,null,null,null,null,null,null,null,null,null,null,{"$f":"BS10","v":1.8649972188512001},null,null,null,null,null,null,null,null,null,null,null,null,null,null,null,null,null,null,null,null,null,null,{"$f":"CP10","v":1.8795819664834825}]
[{"$f":"$A$11","v":"Other costs"},{"$f":"B11","v":1.3494907622612275},null,null,null,null,null,null,null,null,null,null,null,null,null,null,null,null,null,null,null,null,null,null,{"$f":"Y11","v":1.3070820225226438},null,null,null,null,null,null,null,null,null,null,null,null,null,null,null,null,null,null,null,null,null,null,{"$f":"AV11","v":1.3080307780118863},null,null,null,null,null,null,null,null,null,null,null,null,null,null,null,null,null,null,null,null,null,null,{"$f":"BS11","v":1.3020061509910021},null,null,null,null,null,null,null,null,null,null,null,null,null,null,null,null,null,null,null,null,null,null,{"$f":"CP11","v":1.2894702649096064}]
[]
[]
[{"$f":"$A$216","v":"Category P LED 18 Watt"}]
[{"$f":"$A$217","v":"Bulk change & repairs"},{"$f":"G234*K40+N234*K41+U234*K42","v":8.9878947776782763},null,null,null,null,null,null,null,null,null,null,null,null,null,null,null,null,null,null,null,null,null,null,{"$f":"AD234*AH40+AK234*AH41+AR234*AH42","v":9.0044341630389653},null,null,null,null,null,null,null,null,null,null,null,null,null,null,null,null,null,null,null,null,null,null,{"$f":"BA234*BE40+BH234*BE41+BO234*BE42","v":9.0865915645034345},null,null,null,null,null,null,null,null,null,null,null,null,null,null,null,null,null,null,null,null,null,null,{"$f":"BX234*CB40+CE234*CB41+CL234*CB42","v":9.141548603805127},null,null,null,null,null,null,null,null,null,null,null,null,null,null,null,null,null,null,null,null,null,null,{"$f":"CU234*CY40+DB234*CY41+DI234*CY42","v":9.1996293754299678}]
[{"$f":"$A$10","v":"Dedicated poles - inspection"},{"$f":"B16","v":1.8351199999999996},null,null,null,null,null,null,null,null,null,null,null,null,null,null,null,null,null,null,null,null,null,null,{"$f":"Y16","v":1.8402999999999996},null,null,null,null,null,null,null,null,null,null,null,null,null,null,null,null,null,null,null,null,null,null,{"$f":"AV16","v":1.8514009220000003},null,null,null,null,null,null,null,null,null,null,null,null,null,null,null,null,null,null,null,null,null,null,{"$f":"BS16","v":1.8649972188512001},null,null,null,null,null,null,null,null,null,null,null,null,null,null,null,null,null,null,null,null,null,null,{"$f":"CP16","v":1.8795819664834825}]
[{"$f":"$A$11","v":"Other costs"},{"$f":"B17","v":1.3494907622612275},null,null,null,null,null,null,null,null,null,null,null,null,null,null,null,null,null,null,null,null,null,null,{"$f":"Y17","v":1.3070820225226438},null,null,null,null,null,null,null,null,null,null,null,null,null,null,null,null,null,null,null,null,null,null,{"$f":"AV17","v":1.3080307780118863},null,null,null,null,null,null,null,null,null,null,null,null,null,null,null,null,null,null,null,null,null,null,{"$f":"BS17","v":1.3020061509910021},null,null,null,null,null,null,null,null,null,null,null,null,null,null,null,null,null,null,null,null,null,null,{"$f":"CP17","v":1.2894702649096064}]
[]
[]
[]
[{"$f":"'DNSP Inputs O & M'!A52","v":"Location of selected public lighting assets within distributors' areas (%)"},null,{"$f":"$A$71","v":"MV80"},null,{"$f":"$A$112","v":"S-HP 150"},null,{"$f":"$A$144","v":"S-HP 250"},null,{"$f":"$A$178","v":"T5 (2 X 14W)"},null,{"$f":"$A$216","v":"Category P LED 18 Watt"},null,null,null,null,null,null,null,null,null,null,null,null,null,null,{"$f":"$A$71","v":"MV80"},null,{"$f":"$A$112","v":"S-HP 150"},null,{"$f":"$A$144","v":"S-HP 250"},null,{"$f":"$A$178","v":"T5 (2 X 14W)"},null,{"$f":"$A$216","v":"Category P LED 18 Watt"},null,null,null,null,null,null,null,null,null,null,null,null,null,null,{"$f":"$A$71","v":"MV80"},null,{"$f":"$A$112","v":"S-HP 150"},null,{"$f":"$A$144","v":"S-HP 250"},null,{"$f":"$A$178","v":"T5 (2 X 14W)"},null,{"$f":"$A$216","v":"Category P LED 18 Watt"},null,null,null,null,null,null,null,null,null,null,null,null,null,null,{"$f":"$A$71","v":"MV80"},null,{"$f":"$A$112","v":"S-HP 150"},null,{"$f":"$A$144","v":"S-HP 250"},null,{"$f":"$A$178","v":"T5 (2 X 14W)"},null,{"$f":"$A$216","v":"Category P LED 18 Watt"},null,null,null,null,null,null,null,null,null,null,null,null,null,null,{"$f":"$A$71","v":"MV80"},null,{"$f":"$A$112","v":"S-HP 150"},null,{"$f":"$A$144","v":"S-HP 250"},null,{"$f":"$A$178","v":"T5 (2 X 14W)"},null,{"$f":"$A$216","v":"Category P LED 18 Watt"}]
[{"$f":"'DNSP Inputs O & M'!A53","v":"Urban"},null,{"$f":"'DNSP Inputs O & M'!$D$53","v":0.75370609721831971},null,{"$f":"'DNSP Inputs O & M'!$D$85","v":0.78494507861296581},null,{"$f":"'DNSP Inputs O & M'!$D$117","v":0.77241112828438951},null,{"$f":"'DNSP Inputs O & M'!$D$177","v":0.779800522901133},null,{"$f":"'DNSP Inputs O & M'!$D$212","v":0.28489459897717351},null,null,null,null,null,null,null,null,null,null,null,null,null,null,{"$f":"'DNSP Inputs O & M'!$E$53","v":0.75370609721831971},null,{"$f":"'DNSP Inputs O & M'!$E$85","v":0.78494507861296581},null,{"$f":"'DNSP Inputs O & M'!$E$117","v":0.77241112828438951},null,{"$f":"'DNSP Inputs O & M'!$E$177","v":0.779800522901133},null,{"$f":"'DNSP Inputs O & M'!$E$212","v":0.28489459897717351},null,null,null,null,null,null,null,null,null,null,null,null,null,null,{"$f":"'DNSP Inputs O & M'!$F$53","v":0.75370609721831971},null,{"$f":"'DNSP Inputs O & M'!$F$85","v":0.78494507861296581},null,{"$f":"'DNSP Inputs O & M'!$F$117","v":0.77241112828438951},null,{"$f":"'DNSP Inputs O & M'!$F$177","v":0.779800522901133},null,{"$f":"'DNSP Inputs O & M'!$F$212","v":0.28489459897717351},null,null,null,null,null,null,null,null,null,null,null,null,null,null,{"$f":"'DNSP Inputs O & M'!$G$53","v":0.75370609721831971},null,{"$f":"'DNSP Inputs O & M'!$G$85","v":0.78494507861296581},null,{"$f":"'DNSP Inputs O & M'!$G$117","v":0.77241112828438951},null,{"$f":"'DNSP Inputs O & M'!$G$177","v":0.779800522901133},null,{"$f":"'DNSP Inputs O & M'!$G$212","v":0.28489459897717351},null,null,null,null,null,null,null,null,null,null,null,null,null,null,{"$f":"'DNSP Inputs O & M'!$H$53","v":0.75370609721831971},null,{"$f":"'DNSP Inputs O & M'!$H$85","v":0.78494507861296581},null,{"$f":"'DNSP Inputs O & M'!$H$117","v":0.77241112828438951},null,{"$f":"'DNSP Inputs O & M'!$H$177","v":0.779800522901133},null,{"$f":"'DNSP Inputs O & M'!$H$212","v":0.28489459897717351}]
[{"$f":"'DNSP Inputs O & M'!A54","v":"Rural"},null,{"$f":"'DNSP Inputs O & M'!$D$54","v":0.18851362742343356},null,{"$f":"'DNSP Inputs O & M'!$D$86","v":0.18511738100366143},null,{"$f":"'DNSP Inputs O & M'!$D$118","v":0.20455950540958268},null,{"$f":"'DNSP Inputs O & M'!$D$178","v":0.21981214292630968},null,{"$f":"'DNSP Inputs O & M'!$D$213","v":0.63727079955095423},null,null,null,null,null,null,null,null,null,null,null,null,null,null,{"$f":"'DNSP Inputs O & M'!$E$54","v":0.18851362742343356},null,{"$f":"'DNSP Inputs O & M'!$E$86","v":0.18511738100366143},null,{"$f":"'DNSP Inputs O & M'!$E$118","v":0.20455950540958268},null,{"$f":"'DNSP Inputs O & M'!$E$178","v":0.21981214292630968},null,{"$f":"'DNSP Inputs O & M'!$E$213","v":0.63727079955095423},null,null,null,null,null,null,null,null,null,null,null,null,null,null,{"$f":"'DNSP Inputs O & M'!$F$54","v":0.18851362742343356},null,{"$f":"'DNSP Inputs O & M'!$F$86","v":0.18511738100366143},null,{"$f":"'DNSP Inputs O & M'!$F$118","v":0.20455950540958268},null,{"$f":"'DNSP Inputs O & M'!$F$178","v":0.21981214292630968},null,{"$f":"'DNSP Inputs O & M'!$F$213","v":0.63727079955095423},null,null,null,null,null,null,null,null,null,null,null,null,null,null,{"$f":"'DNSP Inputs O & M'!$G$54","v":0.18851362742343356},null,{"$f":"'DNSP Inputs O & M'!$G$86","v":0.18511738100366143},null,{"$f":"'DNSP Inputs O & M'!$G$118","v":0.20455950540958268},null,{"$f":"'DNSP Inputs O & M'!$G$178","v":0.21981214292630968},null,{"$f":"'DNSP Inputs O & M'!$G$213","v":0.63727079955095423},null,null,null,null,null,null,null,null,null,null,null,null,null,null,{"$f":"'DNSP Inputs O & M'!$H$54","v":0.18851362742343356},null,{"$f":"'DNSP Inputs O & M'!$H$86","v":0.18511738100366143},null,{"$f":"'DNSP Inputs O & M'!$H$118","v":0.20455950540958268},null,{"$f":"'DNSP Inputs O & M'!$H$178","v":0.21981214292630968},null,{"$f":"'DNSP Inputs O & M'!$H$213","v":0.63727079955095423}]
[{"$f":"'DNSP Inputs O & M'!A55","v":"Remote"},null,{"$f":"'DNSP Inputs O & M'!$D$55","v":5.7780275358246695E-2},null,{"$f":"'DNSP Inputs O & M'!$D$87","v":2.9937540383372818E-2},null,{"$f":"'DNSP Inputs O & M'!$D$119","v":2.302936630602782E-2},null,{"$f":"'DNSP Inputs O & M'!$D$179","v":3.8733417255737385E-4},null,{"$f":"'DNSP Inputs O & M'!$D$214","v":7.7834601471872267E-2},null,null,null,null,null,null,null,null,null,null,null,null,null,null,{"$f":"'DNSP Inputs O & M'!$E$55","v":5.7780275358246695E-2},null,{"$f":"'DNSP Inputs O & M'!$E$87","v":2.9937540383372818E-2},null,{"$f":"'DNSP Inputs O & M'!$E$119","v":2.302936630602782E-2},null,{"$f":"'DNSP Inputs O & M'!$E$179","v":3.8733417255737385E-4},null,{"$f":"'DNSP Inputs O & M'!$E$214","v":7.7834601471872267E-2},null,null,null,null,null,null,null,null,null,null,null,null,null,null,{"$f":"'DNSP Inputs O & M'!$F$55","v":5.7780275358246695E-2},null,{"$f":"'DNSP Inputs O & M'!$F$87","v":2.9937540383372818E-2},null,{"$f":"'DNSP Inputs O & M'!$F$119","v":2.302936630602782E-2},null,{"$f":"'DNSP Inputs O & M'!$F$179","v":3.8733417255737385E-4},null,{"$f":"'DNSP Inputs O & M'!$F$214","v":7.7834601471872267E-2},null,null,null,null,null,null,null,null,null,null,null,null,null,null,{"$f":"'DNSP Inputs O & M'!$G$55","v":5.7780275358246695E-2},null,{"$f":"'DNSP Inputs O & M'!$G$87","v":2.9937540383372818E-2},null,{"$f":"'DNSP Inputs O & M'!$G$119","v":2.302936630602782E-2},null,{"$f":"'DNSP Inputs O & M'!$G$179","v":3.8733417255737385E-4},null,{"$f":"'DNSP Inputs O & M'!$G$214","v":7.7834601471872267E-2},null,null,null,null,null,null,null,null,null,null,null,null,null,null,{"$f":"'DNSP Inputs O & M'!$H$55","v":5.7780275358246695E-2},null,{"$f":"'DNSP Inputs O & M'!$H$87","v":2.9937540383372818E-2},null,{"$f":"'DNSP Inputs O & M'!$H$119","v":2.302936630602782E-2},null,{"$f":"'DNSP Inputs O & M'!$H$179","v":3.8733417255737385E-4},null,{"$f":"'DNSP Inputs O & M'!$H$214","v":7.7834601471872267E-2}]
[]
[{"$f":"'DNSP Inputs O & M'!A128","v":"Proportion of lights on dedicated poles"},null,{"$f":"'DNSP Inputs O & M'!$D$128","v":0.504},null,null,null,null,null,null,null,null,null,null,null,null,null,null,null,null,null,null,null,null,null,null,{"$f":"'DNSP Inputs O & M'!$E$128","v":0.504},null,null,null,null,null,null,null,null,null,null,null,null,null,null,null,null,null,null,null,null,null,null,{"$f":"'DNSP Inputs O & M'!$F$128","v":0.504},null,null,null,null,null,null,null,null,null,null,null,null,null,null,null,null,null,null,null,null,null,null,{"$f":"'DNSP Inputs O & M'!$G$128","v":0.504},null,null,null,null,null,null,null,null,null,null,null,null,null,null,null,null,null,null,null,null,null,null,{"$f":"'DNSP Inputs O & M'!$H$128","v":0.504}]
[]
[{"$f":"'DNSP Inputs O & M'!A132","v":"Other direct costs"}]
[{"$f":"'DNSP Inputs O & M'!$A$133","v":"Call centre"},null,{"$f":"'DNSP Inputs O & M'!$D$136","v":71396.396610159936},null,null,null,null,null,null,null,null,null,null,null,null,null,null,null,null,null,null,null,null,null,null,{"$f":"'DNSP Inputs O & M'!$E$136","v":72598.978527246887},null,null,null,null,null,null,null,null,null,null,null,null,null,null,null,null,null,null,null,null,null,null,{"$f":"'DNSP Inputs O & M'!$F$136","v":73821.816414326284},null,null,null,null,null,null,null,null,null,null,null,null,null,null,null,null,null,null,null,null,null,null,{"$f":"'DNSP Inputs O & M'!$G$136","v":75065.251457569742},null,null,null,null,null,null,null,null,null,null,null,null,null,null,null,null,null,null,null,null,null,null,{"$f":"'DNSP Inputs O & M'!$H$136","v":76329.630589997993}]
[{"$f":"'DNSP Inputs O & M'!$A$138","v":"GIS and other"},null,{"$f":"'DNSP Inputs O & M'!$D$138","v":113442.54344988911},null,null,null,null,null,null,null,null,null,null,null,null,null,null,null,null,null,null,null,null,null,null,{"$f":"'DNSP Inputs O & M'!$E$138","v":113442.54344988911},null,null,null,null,null,null,null,null,null,null,null,null,null,null,null,null,null,null,null,null,null,null,{"$f":"'DNSP Inputs O & M'!$F$138","v":113442.54344988911},null,null,null,null,null,null,null,null,null,null,null,null,null,null,null,null,null,null,null,null,null,null,{"$f":"'DNSP Inputs O & M'!$G$138","v":113442.54344988911},null,null,null,null,null,null,null,null,null,null,null,null,null,null,null,null,null,null,null,null,null,null,{"$f":"'DNSP Inputs O & M'!$H$138","v":113442.54344988911}]
[{"$f":"'DNSP Inputs O & M'!A139","v":"Complaints handling"},null,{"$f":"'DNSP Inputs O & M'!$D$139","v":34032.763034966731},null,null,null,null,null,null,null,null,null,null,null,null,null,null,null,null,null,null,null,null,null,null,{"$f":"'DNSP Inputs O & M'!$E$139","v":34032.763034966731},null,null,null,null,null,null,null,null,null,null,null,null,null,null,null,null,null,null,null,null,null,null,{"$f":"'DNSP Inputs O & M'!$F$139","v":34032.763034966731},null,null,null,null,null,null,null,null,null,null,null,null,null,null,null,null,null,null,null,null,null,null,{"$f":"'DNSP Inputs O & M'!$G$139","v":34032.763034966731},null,null,null,null,null,null,null,null,null,null,null,null,null,null,null,null,null,null,null,null,null,null,{"$f":"'DNSP Inputs O & M'!$H$139","v":34032.763034966731}]
[{"$f":"'DNSP Inputs O & M'!A140","v":"Accounts Manager"},null,{"$f":"'DNSP Inputs O & M'!$D$140","v":0},null,null,null,null,null,null,null,null,null,null,null,null,null,null,null,null,null,null,null,null,null,null,{"$f":"'DNSP Inputs O & M'!$E$140","v":0},null,null,null,null,null,null,null,null,null,null,null,null,null,null,null,null,null,null,null,null,null,null,{"$f":"'DNSP Inputs O & M'!$F$140","v":0},null,null,null,null,null,null,null,null,null,null,null,null,null,null,null,null,null,null,null,null,null,null,{"$f":"'DNSP Inputs O & M'!$G$140","v":0},null,null,null,null,null,null,null,null,null,null,null,null,null,null,null,null,null,null,null,null,null,null,{"$f":"'DNSP Inputs O & M'!$H$140","v":0}]
[null,null,{"$f":"SUM(C47:C50)","v":218871.70309501578},null,null,null,null,null,null,null,null,null,null,null,null,null,null,null,null,null,null,null,null,null,null,{"$f":"SUM(Z47:Z50)","v":220074.28501210274},null,null,null,null,null,null,null,null,null,null,null,null,null,null,null,null,null,null,null,null,null,null,{"$f":"SUM(AW47:AW50)","v":221297.12289918214},null,null,null,null,null,null,null,null,null,null,null,null,null,null,null,null,null,null,null,null,null,null,{"$f":"SUM(BT47:BT50)","v":222540.5579424256},null,null,null,null,null,null,null,null,null,null,null,null,null,null,null,null,null,null,null,null,null,null,{"$f":"SUM(CQ47:CQ50)","v":223804.93707485381}]
[]
[{"$f":"'DNSP Inputs General'!A77","v":"Total Number of Lights"},null,{"$f":"'DNSP Inputs General'!$K$77","v":162188.36706097267},null,null,null,null,null,null,null,null,null,null,null,null,null,null,null,null,null,null,null,null,null,null,{"$f":"'DNSP Inputs General'!$L$77","v":168370.67698885759},null,null,null,null,null,null,null,null,null,null,null,null,null,null,null,null,null,null,null,null,null,null,{"$f":"'DNSP Inputs General'!$M$77","v":169183.42184236523},null,null,null,null,null,null,null,null,null,null,null,null,null,null,null,null,null,null,null,null,null,null,{"$f":"'DNSP Inputs General'!$N$77","v":170921.28003622888},null,null,null,null,null,null,null,null,null,null,null,null,null,null,null,null,null,null,null,null,null,null,{"$f":"'DNSP Inputs General'!$O$77","v":173563.47266413533}]
[]
[]
[]
[]
[]
["Mercury Vapour 80 Watt Standard Light Type - Cost build-up"]
[]
["Additional assumptions"]
["Proportion of lamps that will fail before bulk change",null,null,{"$f":"'DNSP Inputs O & M'!$D$27","v":0.1554544767364745},null,null,null,null,null,null,null,null,null,null,null,null,null,null,null,null,null,null,null,null,null,null,{"$f":"'DNSP Inputs O & M'!$E$27","v":0.1554544767364745},null,null,null,null,null,null,null,null,null,null,null,null,null,null,null,null,null,null,null,null,null,null,{"$f":"'DNSP Inputs O & M'!$F$27","v":0.1554544767364745},null,null,null,null,null,null,null,null,null,null,null,null,null,null,null,null,null,null,null,null,null,null,{"$f":"'DNSP Inputs O & M'!$G$27","v":0.1554544767364745},null,null,null,null,null,null,null,null,null,null,null,null,null,null,null,null,null,null,null,null,null,null,{"$f":"'DNSP Inputs O & M'!$H$27","v":0.1554544767364745}]
["Proportion of lamps that will fail before bulk change (per year)",null,null,{"$f":"D62/'DNSP Inputs O & M'!$D$25","v":3.8863619184118625E-2},null,null,null,null,null,null,null,null,null,null,null,null,null,null,null,null,null,null,null,null,null,null,{"$f":"AA62/'DNSP Inputs O & M'!$E$25","v":3.8863619184118625E-2},null,null,null,null,null,null,null,null,null,null,null,null,null,null,null,null,null,null,null,null,null,null,{"$f":"AX62/'DNSP Inputs O & M'!$F$25","v":3.8863619184118625E-2},null,null,null,null,null,null,null,null,null,null,null,null,null,null,null,null,null,null,null,null,null,null,{"$f":"BU62/'DNSP Inputs O & M'!$G$25","v":3.8863619184118625E-2},null,null,null,null,null,null,null,null,null,null,null,null,null,null,null,null,null,null,null,null,null,null,{"$f":"CR62/'DNSP Inputs O & M'!$H$25","v":3.8863619184118625E-2}]
["Overheads are applied to material and labour components"]
["All costs and charges are exclusive of GST"]
[]
[null,"Urban",null,null,null,null,null,null,"Rural",null,null,null,null,null,null,"Remote",null,null,null,null,null,null,null,null,"Urban",null,null,null,null,null,null,"Rural",null,null,null,null,null,null,"Remote",null,null,null,null,null,null,null,null,"Urban",null,null,null,null,null,null,"Rural",null,null,null,null,null,null,"Remote",null,null,null,null,null,null,null,null,"Urban",null,null,null,null,null,null,"Rural",null,null,null,null,null,null,"Remote",null,null,null,null,null,null,null,null,"Urban",null,null,null,null,null,null,"Rural",null,null,null,null,null,null,"Remote"]
[]
[null,"Unit rate","Number","Hours","Cost","Annualised","Annualised",null,"Unit rate","Number","Hours","Cost","Annualised","Annualised",null,"Unit rate","Number","Hours","Cost","Annualised","Annualised",null,null,null,"Unit rate","Number","Hours","Cost","Annualised","Annualised",null,"Unit rate","Number","Hours","Cost","Annualised","Annualised",null,"Unit rate","Number","Hours","Cost","Annualised","Annualised",null,null,null,"Unit rate","Number","Hours","Cost","Annualised","Annualised",null,"Unit rate","Number","Hours","Cost","Annualised","Annualised",null,"Unit rate","Number","Hours","Cost","Annualised","Annualised",null,null,null,"Unit rate","Number","Hours","Cost","Annualised","Annualised",null,"Unit rate","Number","Hours","Cost","Annualised","Annualised",null,"Unit rate","Number","Hours","Cost","Annualised","Annualised",null,null,null,"Unit rate","Number","Hours","Cost","Annualised","Annualised",null,"Unit rate","Number","Hours","Cost","Annualised","Annualised",null,"Unit rate","Number","Hours","Cost","Annualised","Annualised"]
[null,null,null,null,null," cost","unit cost",null,null,null,null,null," cost","unit cost",null,null,null,null,null," cost","unit cost",null,null,null,null,null,null,null," cost","unit cost",null,null,null,null,null," cost","unit cost",null,null,null,null,null," cost","unit cost",null,null,null,null,null,null,null," cost","unit cost",null,null,null,null,null," cost","unit cost",null,null,null,null,null," cost","unit cost",null,null,null,null,null,null,null," cost","unit cost",null,null,null,null,null," cost","unit cost",null,null,null,null,null," cost","unit cost",null,null,null,null,null,null,null," cost","unit cost",null,null,null,null,null," cost","unit cost",null,null,null,null,null," cost","unit cost"]
["MV80"]
["Bulk change & repairs"]
["Materials - bulk lamp change"]
["Lamp",{"$f":"'DNSP Inputs O & M'!$D$28","v":5.7113799058629979},{"$f":"'DNSP Inputs O & M'!$D$34","v":86.4},null,{"$f":"B74*C74","v":493.46322386656306},{"$f":"E74/'DNSP Inputs O & M'!$D$25*0.8","v":98.692644773312622},{"$f":"(F74+F75+F76)/C74","v":4.2744742063518411},null,{"$f":"'DNSP Inputs O & M'!$D$28*(1+'DNSP Inputs O & M'!$D$11)","v":5.9969489011561476},{"$f":"'DNSP Inputs O & M'!$D$35","v":72},null,{"$f":"I74*J74","v":431.78032088324261},{"$f":"L74/'DNSP Inputs O & M'!$D$25*0.8","v":86.35606417664853},{"$f":"(M74+M75+M76)/J74","v":4.4881979166694332},null,{"$f":"'DNSP Inputs O & M'!$D$28*(1+'DNSP Inputs O & M'!$D$11)","v":5.9969489011561476},{"$f":"'DNSP Inputs O & M'!$D$36","v":60},null,{"$f":"P74*Q74","v":359.81693406936887},{"$f":"S74/'DNSP Inputs O & M'!$D$25*0.8","v":71.963386813873782},{"$f":"(T74+T75+T76)/Q74","v":4.4881979166694341},null,null,null,{"$f":"'DNSP Inputs O & M'!$E$28","v":5.7113799058629979},{"$f":"'DNSP Inputs O & M'!$E$34","v":86.4},null,{"$f":"Y74*Z74","v":493.46322386656306},{"$f":"AB74/'DNSP Inputs O & M'!$E$25*0.8","v":98.692644773312622},{"$f":"(AC74+AC75+AC76)/Z74","v":4.2744742063518411},null,{"$f":"'DNSP Inputs O & M'!$E$28*(1+'DNSP Inputs O & M'!$E$11)","v":5.9969489011561476},{"$f":"'DNSP Inputs O & M'!$E$35","v":72},null,{"$f":"AF74*AG74","v":431.78032088324261},{"$f":"AI74/'DNSP Inputs O & M'!$E$25*0.8","v":86.35606417664853},{"$f":"(AJ74+AJ75+AJ76)/AG74","v":4.4881979166694332},null,{"$f":"'DNSP Inputs O & M'!$E$28*(1+'DNSP Inputs O & M'!$E$11)","v":5.9969489011561476},{"$f":"'DNSP Inputs O & M'!$E$36","v":60},null,{"$f":"AM74*AN74","v":359.81693406936887},{"$f":"AP74/'DNSP Inputs O & M'!$E$25*0.8","v":71.963386813873782},{"$f":"(AQ74+AQ75+AQ76)/AN74","v":4.4881979166694341},null,null,null,{"$f":"'DNSP Inputs O & M'!$F$28","v":5.7113799058629979},{"$f":"'DNSP Inputs O & M'!$F$34","v":86.4},null,{"$f":"AV74*AW74","v":493.46322386656306},{"$f":"AY74/'DNSP Inputs O & M'!$F$25*0.8","v":98.692644773312622},{"$f":"(AZ74+AZ75+AZ76)/AW74","v":4.2744742063518411},null,{"$f":"'DNSP Inputs O & M'!$F$28*(1+'DNSP Inputs O & M'!$F$11)","v":5.9969489011561476},{"$f":"'DNSP Inputs O & M'!$F$35","v":72},null,{"$f":"BC74*BD74","v":431.78032088324261},{"$f":"BF74/'DNSP Inputs O & M'!$F$25*0.8","v":86.35606417664853},{"$f":"(BG74+BG75+BG76)/BD74","v":4.4881979166694332},null,{"$f":"'DNSP Inputs O & M'!$F$28*(1+'DNSP Inputs O & M'!$F$11)","v":5.9969489011561476},{"$f":"'DNSP Inputs O & M'!$F$36","v":60},null,{"$f":"BJ74*BK74","v":359.81693406936887},{"$f":"BM74/'DNSP Inputs O & M'!$F$25*0.8","v":71.963386813873782},{"$f":"(BN74+BN75+BN76)/BK74","v":4.4881979166694341},null,null,null,{"$f":"'DNSP Inputs O & M'!$G$28","v":5.7113799058629979},{"$f":"'DNSP Inputs O & M'!$G$34","v":86.4},null,{"$f":"BS74*BT74","v":493.46322386656306},{"$f":"BV74/'DNSP Inputs O & M'!$G$25*0.8","v":98.692644773312622},{"$f":"(BW74+BW75+BW76)/BT74","v":4.2744742063518411},null,{"$f":"'DNSP Inputs O & M'!$G$28*(1+'DNSP Inputs O & M'!$G$11)","v":5.9969489011561476},{"$f":"'DNSP Inputs O & M'!$G$35","v":72},null,{"$f":"BZ74*CA74","v":431.78032088324261},{"$f":"CC74/'DNSP Inputs O & M'!$G$25*0.8","v":86.35606417664853},{"$f":"(CD74+CD75+CD76)/CA74","v":4.4881979166694332},null,{"$f":"'DNSP Inputs O & M'!$G$28*(1+'DNSP Inputs O & M'!$G$11)","v":5.9969489011561476},{"$f":"'DNSP Inputs O & M'!$G$36","v":60},null,{"$f":"CG74*CH74","v":359.81693406936887},{"$f":"CJ74/'DNSP Inputs O & M'!$G$25*0.8","v":71.963386813873782},{"$f":"(CK74+CK75+CK76)/CH74","v":4.4881979166694341},null,null,null,{"$f":"'DNSP Inputs O & M'!$H$28","v":5.7113799058629979},{"$f":"'DNSP Inputs O & M'!$H$34","v":86.4},null,{"$f":"CP74*CQ74","v":493.46322386656306},{"$f":"CS74/'DNSP Inputs O & M'!$H$25*0.8","v":98.692644773312622},{"$f":"(CT74+CT75+CT76)/CQ74","v":4.2744742063518411},null,{"$f":"'DNSP Inputs O & M'!$H$28*(1+'DNSP Inputs O & M'!$H$11)","v":5.9969489011561476},{"$f":"'DNSP Inputs O & M'!$H$35","v":72},null,{"$f":"CW74*CX74","v":431.78032088324261},{"$f":"CZ74/'DNSP Inputs O & M'!$H$25*0.8","v":86.35606417664853},{"$f":"(DA74+DA75+DA76)/CX74","v":4.4881979166694332},null,{"$f":"'DNSP Inputs O & M'!$H$28*(1+'DNSP Inputs O & M'!$H$11)","v":5.9969489011561476},{"$f":"'DNSP Inputs O & M'!$H$36","v":60},null,{"$f":"DD74*DE74","v":359.81693406936887},{"$f":"DG74/'DNSP Inputs O & M'!$H$25*0.8","v":71.963386813873782},{"$f":"(DH74+DH75+DH76)/DE74","v":4.4881979166694341}]
["PE cell",{"$f":"'DNSP Inputs O & M'!$D$29","v":23.057977956930479},{"$f":"C74*'DNSP Inputs O & M'!$D$25/'DNSP Inputs O & M'!$D$26","v":43.2},null,{"$f":"B75*C75","v":996.1046477393968},{"$f":"E75/'DNSP Inputs O & M'!$D$25","v":249.0261619348492},null,null,{"$f":"'DNSP Inputs O & M'!$D$29*(1+'DNSP Inputs O & M'!$D$11)","v":24.210876854777005},{"$f":"J74*'DNSP Inputs O & M'!$D$25/'DNSP Inputs O & M'!$D$26","v":36},null,{"$f":"I75*J75","v":871.59156677197223},{"$f":"L75/'DNSP Inputs O & M'!$D$25","v":217.89789169299306},null,null,{"$f":"'DNSP Inputs O & M'!$D$29*(1+'DNSP Inputs O & M'!$D$11)","v":24.210876854777005},{"$f":"Q74*'DNSP Inputs O & M'!$D$25/'DNSP Inputs O & M'!$D$26","v":30},null,{"$f":"P75*Q75","v":726.32630564331021},{"$f":"S75/'DNSP Inputs O & M'!$D$25","v":181.58157641082755},null,null,null,null,{"$f":"'DNSP Inputs O & M'!$E$29","v":23.057977956930479},{"$f":"Z74*'DNSP Inputs O & M'!$E$25/'DNSP Inputs O & M'!$E$26","v":43.2},null,{"$f":"Y75*Z75","v":996.1046477393968},{"$f":"AB75/'DNSP Inputs O & M'!$E$25","v":249.0261619348492},null,null,{"$f":"'DNSP Inputs O & M'!$E$29*(1+'DNSP Inputs O & M'!$E$11)","v":24.210876854777005},{"$f":"AG74*'DNSP Inputs O & M'!$E$25/'DNSP Inputs O & M'!$E$26","v":36},null,{"$f":"AF75*AG75","v":871.59156677197223},{"$f":"AI75/'DNSP Inputs O & M'!$E$25","v":217.89789169299306},null,null,{"$f":"'DNSP Inputs O & M'!$E$29*(1+'DNSP Inputs O & M'!$E$11)","v":24.210876854777005},{"$f":"AN74*'DNSP Inputs O & M'!$E$25/'DNSP Inputs O & M'!$E$26","v":30},null,{"$f":"AM75*AN75","v":726.32630564331021},{"$f":"AP75/'DNSP Inputs O & M'!$E$25","v":181.58157641082755},null,null,null,null,{"$f":"'DNSP Inputs O & M'!$F$29","v":23.057977956930479},{"$f":"AW74*'DNSP Inputs O & M'!$F$25/'DNSP Inputs O & M'!$F$26","v":43.2},null,{"$f":"AV75*AW75","v":996.1046477393968},{"$f":"AY75/'DNSP Inputs O & M'!$F$25","v":249.0261619348492},null,null,{"$f":"'DNSP Inputs O & M'!$F$29*(1+'DNSP Inputs O & M'!$F$11)","v":24.210876854777005},{"$f":"BD74*'DNSP Inputs O & M'!$F$25/'DNSP Inputs O & M'!$F$26","v":36},null,{"$f":"BC75*BD75","v":871.59156677197223},{"$f":"BF75/'DNSP Inputs O & M'!$F$25","v":217.89789169299306},null,null,{"$f":"'DNSP Inputs O & M'!$F$29*(1+'DNSP Inputs O & M'!$F$11)","v":24.210876854777005},{"$f":"BK74*'DNSP Inputs O & M'!$F$25/'DNSP Inputs O & M'!$F$26","v":30},null,{"$f":"BJ75*BK75","v":726.32630564331021},{"$f":"BM75/'DNSP Inputs O & M'!$F$25","v":181.58157641082755},null,null,null,null,{"$f":"'DNSP Inputs O & M'!$G$29","v":23.057977956930479},{"$f":"BT74*'DNSP Inputs O & M'!$G$25/'DNSP Inputs O & M'!$G$26","v":43.2},null,{"$f":"BS75*BT75","v":996.1046477393968},{"$f":"BV75/'DNSP Inputs O & M'!$G$25","v":249.0261619348492},null,null,{"$f":"'DNSP Inputs O & M'!$G$29*(1+'DNSP Inputs O & M'!$G$11)","v":24.210876854777005},{"$f":"CA74*'DNSP Inputs O & M'!$G$25/'DNSP Inputs O & M'!$G$26","v":36},null,{"$f":"BZ75*CA75","v":871.59156677197223},{"$f":"CC75/'DNSP Inputs O & M'!$G$25","v":217.89789169299306},null,null,{"$f":"'DNSP Inputs O & M'!$G$29*(1+'DNSP Inputs O & M'!$G$11)","v":24.210876854777005},{"$f":"CH74*'DNSP Inputs O & M'!$G$25/'DNSP Inputs O & M'!$G$26","v":30},null,{"$f":"CG75*CH75","v":726.32630564331021},{"$f":"CJ75/'DNSP Inputs O & M'!$G$25","v":181.58157641082755},null,null,null,null,{"$f":"'DNSP Inputs O & M'!$H$29","v":23.057977956930479},{"$f":"CQ74*'DNSP Inputs O & M'!$H$25/'DNSP Inputs O & M'!$H$26","v":43.2},null,{"$f":"CP75*CQ75","v":996.1046477393968},{"$f":"CS75/'DNSP Inputs O & M'!$H$25","v":249.0261619348492},null,null,{"$f":"'DNSP Inputs O & M'!$H$29*(1+'DNSP Inputs O & M'!$H$11)","v":24.210876854777005},{"$f":"CX74*'DNSP Inputs O & M'!$H$25/'DNSP Inputs O & M'!$H$26","v":36},null,{"$f":"CW75*CX75","v":871.59156677197223},{"$f":"CZ75/'DNSP Inputs O & M'!$H$25","v":217.89789169299306},null,null,{"$f":"'DNSP Inputs O & M'!$H$29*(1+'DNSP Inputs O & M'!$H$11)","v":24.210876854777005},{"$f":"DE74*'DNSP Inputs O & M'!$H$25/'DNSP Inputs O & M'!$H$26","v":30},null,{"$f":"DD75*DE75","v":726.32630564331021},{"$f":"DG75/'DNSP Inputs O & M'!$H$25","v":181.58157641082755}]
["Miscellaneous",{"$f":"'DNSP Inputs O & M'!$D$31","v":1.2497549028146602},{"$f":"'DNSP Inputs O & M'!$D$34","v":86.4},null,{"$f":"B76*C76","v":107.97882360318664},{"$f":"E76/'DNSP Inputs O & M'!$D$25*0.8","v":21.59576472063733},null,null,{"$f":"'DNSP Inputs O & M'!$D$31*(1+'DNSP Inputs O & M'!$D$11)","v":1.3122426479553932},{"$f":"'DNSP Inputs O & M'!$D$35","v":72},null,{"$f":"I76*J76","v":94.481470652788317},{"$f":"L76/'DNSP Inputs O & M'!$D$25*0.8","v":18.896294130557663},null,null,{"$f":"'DNSP Inputs O & M'!$D$31*(1+'DNSP Inputs O & M'!$D$11)","v":1.3122426479553932},{"$f":"'DNSP Inputs O & M'!$D$36","v":60},null,{"$f":"P76*Q76","v":78.734558877323593},{"$f":"S76/'DNSP Inputs O & M'!$D$25*0.8","v":15.746911775464719},null,null,null,null,{"$f":"'DNSP Inputs O & M'!$E$31","v":1.2497549028146602},{"$f":"'DNSP Inputs O & M'!$E$34","v":86.4},null,{"$f":"Y76*Z76","v":107.97882360318664},{"$f":"AB76/'DNSP Inputs O & M'!$E$25*0.8","v":21.59576472063733},null,null,{"$f":"'DNSP Inputs O & M'!$E$31*(1+'DNSP Inputs O & M'!$E$11)","v":1.3122426479553932},{"$f":"'DNSP Inputs O & M'!$E$35","v":72},null,{"$f":"AF76*AG76","v":94.481470652788317},{"$f":"AI76/'DNSP Inputs O & M'!$E$25*0.8","v":18.896294130557663},null,null,{"$f":"'DNSP Inputs O & M'!$E$31*(1+'DNSP Inputs O & M'!$E$11)","v":1.3122426479553932},{"$f":"'DNSP Inputs O & M'!$E$36","v":60},null,{"$f":"AM76*AN76","v":78.734558877323593},{"$f":"AP76/'DNSP Inputs O & M'!$E$25*0.8","v":15.746911775464719},null,null,null,null,{"$f":"'DNSP Inputs O & M'!$F$31","v":1.2497549028146602},{"$f":"'DNSP Inputs O & M'!$F$34","v":86.4},null,{"$f":"AV76*AW76","v":107.97882360318664},{"$f":"AY76/'DNSP Inputs O & M'!$F$25*0.8","v":21.59576472063733},null,null,{"$f":"'DNSP Inputs O & M'!$F$31*(1+'DNSP Inputs O & M'!$F$11)","v":1.3122426479553932},{"$f":"'DNSP Inputs O & M'!$F$35","v":72},null,{"$f":"BC76*BD76","v":94.481470652788317},{"$f":"BF76/'DNSP Inputs O & M'!$F$25*0.8","v":18.896294130557663},null,null,{"$f":"'DNSP Inputs O & M'!$F$31*(1+'DNSP Inputs O & M'!$F$11)","v":1.3122426479553932},{"$f":"'DNSP Inputs O & M'!$F$36","v":60},null,{"$f":"BJ76*BK76","v":78.734558877323593},{"$f":"BM76/'DNSP Inputs O & M'!$F$25*0.8","v":15.746911775464719},null,null,null,null,{"$f":"'DNSP Inputs O & M'!$G$31","v":1.2497549028146602},{"$f":"'DNSP Inputs O & M'!$G$34","v":86.4},null,{"$f":"BS76*BT76","v":107.97882360318664},{"$f":"BV76/'DNSP Inputs O & M'!$G$25*0.8","v":21.59576472063733},null,null,{"$f":"'DNSP Inputs O & M'!$G$31*(1+'DNSP Inputs O & M'!$G$11)","v":1.3122426479553932},{"$f":"'DNSP Inputs O & M'!$G$35","v":72},null,{"$f":"BZ76*CA76","v":94.481470652788317},{"$f":"CC76/'DNSP Inputs O & M'!$G$25*0.8","v":18.896294130557663},null,null,{"$f":"'DNSP Inputs O & M'!$G$31*(1+'DNSP Inputs O & M'!$G$11)","v":1.3122426479553932},{"$f":"'DNSP Inputs O & M'!$G$36","v":60},null,{"$f":"CG76*CH76","v":78.734558877323593},{"$f":"CJ76/'DNSP Inputs O & M'!$G$25*0.8","v":15.746911775464719},null,null,null,null,{"$f":"'DNSP Inputs O & M'!$H$31","v":1.2497549028146602},{"$f":"'DNSP Inputs O & M'!$H$34","v":86.4},null,{"$f":"CP76*CQ76","v":107.97882360318664},{"$f":"CS76/'DNSP Inputs O & M'!$H$25*0.8","v":21.59576472063733},null,null,{"$f":"'DNSP Inputs O & M'!$H$31*(1+'DNSP Inputs O & M'!$H$11)","v":1.3122426479553932},{"$f":"'DNSP Inputs O & M'!$H$35","v":72},null,{"$f":"CW76*CX76","v":94.481470652788317},{"$f":"CZ76/'DNSP Inputs O & M'!$H$25*0.8","v":18.896294130557663},null,null,{"$f":"'DNSP Inputs O & M'!$H$31*(1+'DNSP Inputs O & M'!$H$11)","v":1.3122426479553932},{"$f":"'DNSP Inputs O & M'!$H$36","v":60},null,{"$f":"DD76*DE76","v":78.734558877323593},{"$f":"DG76/'DNSP Inputs O & M'!$H$25*0.8","v":15.746911775464719}]
["Materials - repair of faults"]
["Lamp",{"$f":"'DNSP Inputs O & M'!$D$28","v":5.7113799058629979},{"$f":"'DNSP Inputs O & M'!$D$37*'DNSP Inputs O & M'!$D$40","v":17.28},null,{"$f":"B78*C78","v":98.692644773312608},{"$f":"(E78+E79+E80+E81)/'DNSP Inputs O & M'!$D$37","v":45.927867800987357},{"$f":"F78*D63","v":1.7849231641561163},null,{"$f":"'DNSP Inputs O & M'!$D$28*(1+'DNSP Inputs O & M'!$D$11)","v":5.9969489011561476},{"$f":"'DNSP Inputs O & M'!$D$38*'DNSP Inputs O & M'!$D$40","v":14.399999999999999},null,{"$f":"I78*J78","v":86.356064176648516},{"$f":"(L78+L79+L80+L81)/'DNSP Inputs O & M'!$D$38","v":48.224261191036724},{"$f":"M78*$D$63","v":1.8741693223639222},null,{"$f":"'DNSP Inputs O & M'!$D$28*(1+'DNSP Inputs O & M'!$D$11)","v":5.9969489011561476},{"$f":"'DNSP Inputs O & M'!$D$39*'DNSP Inputs O & M'!$D$40","v":11.52},null,{"$f":"P78*Q78","v":69.084851341318824},{"$f":"(S78+S79+S80+S81)/'DNSP Inputs O & M'!$D$39","v":48.224261191036732},{"$f":"T78*D63","v":1.8741693223639224},null,null,null,{"$f":"'DNSP Inputs O & M'!$E$28","v":5.7113799058629979},{"$f":"'DNSP Inputs O & M'!$E$37*'DNSP Inputs O & M'!$E$40","v":17.28},null,{"$f":"Y78*Z78","v":98.692644773312608},{"$f":"(AB78+AB79+AB80+AB81)/'DNSP Inputs O & M'!$E$37","v":45.927867800987357},{"$f":"AC78*AA63","v":1.7849231641561163},null,{"$f":"'DNSP Inputs O & M'!$E$28*(1+'DNSP Inputs O & M'!$E$11)","v":5.9969489011561476},{"$f":"'DNSP Inputs O & M'!$E$38*'DNSP Inputs O & M'!$E$40","v":14.399999999999999},null,{"$f":"AF78*AG78","v":86.356064176648516},{"$f":"(AI78+AI79+AI80+AI81)/'DNSP Inputs O & M'!$E$38","v":48.224261191036724},{"$f":"AJ78*$AA$63","v":1.8741693223639222},null,{"$f":"'DNSP Inputs O & M'!$E$28*(1+'DNSP Inputs O & M'!$E$11)","v":5.9969489011561476},{"$f":"'DNSP Inputs O & M'!$E$39*'DNSP Inputs O & M'!$E$40","v":11.52},null,{"$f":"AM78*AN78","v":69.084851341318824},{"$f":"(AP78+AP79+AP80+AP81)/'DNSP Inputs O & M'!$E$39","v":48.224261191036732},{"$f":"AQ78*AA63","v":1.8741693223639224},null,null,null,{"$f":"'DNSP Inputs O & M'!$F$28","v":5.7113799058629979},{"$f":"'DNSP Inputs O & M'!$F$37*'DNSP Inputs O & M'!$F$40","v":17.28},null,{"$f":"AV78*AW78","v":98.692644773312608},{"$f":"(AY78+AY79+AY80+AY81)/'DNSP Inputs O & M'!$F$37","v":45.927867800987357},{"$f":"AZ78*AX63","v":1.7849231641561163},null,{"$f":"'DNSP Inputs O & M'!$F$28*(1+'DNSP Inputs O & M'!$F$11)","v":5.9969489011561476},{"$f":"'DNSP Inputs O & M'!$F$38*'DNSP Inputs O & M'!$F$40","v":14.399999999999999},null,{"$f":"BC78*BD78","v":86.356064176648516},{"$f":"(BF78+BF79+BF80+BF81)/'DNSP Inputs O & M'!$F$38","v":48.224261191036724},{"$f":"BG78*$AX$63","v":1.8741693223639222},null,{"$f":"'DNSP Inputs O & M'!$F$28*(1+'DNSP Inputs O & M'!$F$11)","v":5.9969489011561476},{"$f":"'DNSP Inputs O & M'!$F$39*'DNSP Inputs O & M'!$F$40","v":11.52},null,{"$f":"BJ78*BK78","v":69.084851341318824},{"$f":"(BM78+BM79+BM80+BM81)/'DNSP Inputs O & M'!$F$39","v":48.224261191036732},{"$f":"BN78*AX63","v":1.8741693223639224},null,null,null,{"$f":"'DNSP Inputs O & M'!$G$28","v":5.7113799058629979},{"$f":"'DNSP Inputs O & M'!$G$37*'DNSP Inputs O & M'!$G$40","v":17.28},null,{"$f":"BS78*BT78","v":98.692644773312608},{"$f":"(BV78+BV79+BV80+BV81)/'DNSP Inputs O & M'!$G$37","v":45.927867800987357},{"$f":"BW78*BU63","v":1.7849231641561163},null,{"$f":"'DNSP Inputs O & M'!$G$28*(1+'DNSP Inputs O & M'!$G$11)","v":5.9969489011561476},{"$f":"'DNSP Inputs O & M'!$G$38*'DNSP Inputs O & M'!$G$40","v":14.399999999999999},null,{"$f":"BZ78*CA78","v":86.356064176648516},{"$f":"(CC78+CC79+CC80+CC81)/'DNSP Inputs O & M'!$G$38","v":48.224261191036724},{"$f":"CD78*$BU$63","v":1.8741693223639222},null,{"$f":"'DNSP Inputs O & M'!$G$28*(1+'DNSP Inputs O & M'!$G$11)","v":5.9969489011561476},{"$f":"'DNSP Inputs O & M'!$G$39*'DNSP Inputs O & M'!$G$40","v":11.52},null,{"$f":"CG78*CH78","v":69.084851341318824},{"$f":"(CJ78+CJ79+CJ80+CJ81)/'DNSP Inputs O & M'!$G$39","v":48.224261191036732},{"$f":"CK78*BU63","v":1.8741693223639224},null,null,null,{"$f":"'DNSP Inputs O & M'!$H$28","v":5.7113799058629979},{"$f":"'DNSP Inputs O & M'!$H$37*'DNSP Inputs O & M'!$H$40","v":17.28},null,{"$f":"CP78*CQ78","v":98.692644773312608},{"$f":"(CS78+CS79+CS80+CS81)/'DNSP Inputs O & M'!$H$37","v":45.927867800987357},{"$f":"CT78*CR63","v":1.7849231641561163},null,{"$f":"'DNSP Inputs O & M'!$H$28*(1+'DNSP Inputs O & M'!$H$11)","v":5.9969489011561476},{"$f":"'DNSP Inputs O & M'!$H$38*'DNSP Inputs O & M'!$H$40","v":14.399999999999999},null,{"$f":"CW78*CX78","v":86.356064176648516},{"$f":"(CZ78+CZ79+CZ80+CZ81)/'DNSP Inputs O & M'!$H$38","v":48.224261191036724},{"$f":"DA78*$CR$63","v":1.8741693223639222},null,{"$f":"'DNSP Inputs O & M'!$H$28*(1+'DNSP Inputs O & M'!$H$11)","v":5.9969489011561476},{"$f":"'DNSP Inputs O & M'!$H$39*'DNSP Inputs O & M'!$H$40","v":11.52},null,{"$f":"DD78*DE78","v":69.084851341318824},{"$f":"(DG78+DG79+DG80+DG81)/'DNSP Inputs O & M'!$H$39","v":48.224261191036732},{"$f":"DH78*CR63","v":1.8741693223639224}]
["PE cell",{"$f":"'DNSP Inputs O & M'!$D$29","v":23.057977956930479},{"$f":"'DNSP Inputs O & M'!$D$37*'DNSP Inputs O & M'!$D$41","v":14.4},null,{"$f":"B79*C79","v":332.03488257979893},null,null,null,{"$f":"'DNSP Inputs O & M'!$D$29*(1+'DNSP Inputs O & M'!$D$11)","v":24.210876854777005},{"$f":"'DNSP Inputs O & M'!$D$38*'DNSP Inputs O & M'!$D$41","v":12},null,{"$f":"I79*J79","v":290.53052225732404},null,null,null,{"$f":"'DNSP Inputs O & M'!$D$29*(1+'DNSP Inputs O & M'!$D$11)","v":24.210876854777005},{"$f":"'DNSP Inputs O & M'!$D$39*'DNSP Inputs O & M'!$D$41","v":9.6},null,{"$f":"P79*Q79","v":232.42441780585924},null,null,null,null,null,{"$f":"'DNSP Inputs O & M'!$E$29","v":23.057977956930479},{"$f":"'DNSP Inputs O & M'!$E$37*'DNSP Inputs O & M'!$E$41","v":14.4},null,{"$f":"Y79*Z79","v":332.03488257979893},null,null,null,{"$f":"'DNSP Inputs O & M'!$E$29*(1+'DNSP Inputs O & M'!$E$11)","v":24.210876854777005},{"$f":"'DNSP Inputs O & M'!$E$38*'DNSP Inputs O & M'!$E$41","v":12},null,{"$f":"AF79*AG79","v":290.53052225732404},null,null,null,{"$f":"'DNSP Inputs O & M'!$E$29*(1+'DNSP Inputs O & M'!$E$11)","v":24.210876854777005},{"$f":"'DNSP Inputs O & M'!$E$39*'DNSP Inputs O & M'!$E$41","v":9.6},null,{"$f":"AM79*AN79","v":232.42441780585924},null,null,null,null,null,{"$f":"'DNSP Inputs O & M'!$F$29","v":23.057977956930479},{"$f":"'DNSP Inputs O & M'!$F$37*'DNSP Inputs O & M'!$F$41","v":14.4},null,{"$f":"AV79*AW79","v":332.03488257979893},null,null,null,{"$f":"'DNSP Inputs O & M'!$F$29*(1+'DNSP Inputs O & M'!$F$11)","v":24.210876854777005},{"$f":"'DNSP Inputs O & M'!$F$38*'DNSP Inputs O & M'!$F$41","v":12},null,{"$f":"BC79*BD79","v":290.53052225732404},null,null,null,{"$f":"'DNSP Inputs O & M'!$F$29*(1+'DNSP Inputs O & M'!$F$11)","v":24.210876854777005},{"$f":"'DNSP Inputs O & M'!$F$39*'DNSP Inputs O & M'!$F$41","v":9.6},null,{"$f":"BJ79*BK79","v":232.42441780585924},null,null,null,null,null,{"$f":"'DNSP Inputs O & M'!$G$29","v":23.057977956930479},{"$f":"'DNSP Inputs O & M'!$G$37*'DNSP Inputs O & M'!$G$41","v":14.4},null,{"$f":"BS79*BT79","v":332.03488257979893},null,null,null,{"$f":"'DNSP Inputs O & M'!$G$29*(1+'DNSP Inputs O & M'!$G$11)","v":24.210876854777005},{"$f":"'DNSP Inputs O & M'!$G$38*'DNSP Inputs O & M'!$G$41","v":12},null,{"$f":"BZ79*CA79","v":290.53052225732404},null,null,null,{"$f":"'DNSP Inputs O & M'!$G$29*(1+'DNSP Inputs O & M'!$G$11)","v":24.210876854777005},{"$f":"'DNSP Inputs O & M'!$G$39*'DNSP Inputs O & M'!$G$41","v":9.6},null,{"$f":"CG79*CH79","v":232.42441780585924},null,null,null,null,null,{"$f":"'DNSP Inputs O & M'!$H$29","v":23.057977956930479},{"$f":"'DNSP Inputs O & M'!$H$37*'DNSP Inputs O & M'!$H$41","v":14.4},null,{"$f":"CP79*CQ79","v":332.03488257979893},null,null,null,{"$f":"'DNSP Inputs O & M'!$H$29*(1+'DNSP Inputs O & M'!$H$11)","v":24.210876854777005},{"$f":"'DNSP Inputs O & M'!$H$38*'DNSP Inputs O & M'!$H$41","v":12},null,{"$f":"CW79*CX79","v":290.53052225732404},null,null,null,{"$f":"'DNSP Inputs O & M'!$H$29*(1+'DNSP Inputs O & M'!$H$11)","v":24.210876854777005},{"$f":"'DNSP Inputs O & M'!$H$39*'DNSP Inputs O & M'!$H$41","v":9.6},null,{"$f":"DD79*DE79","v":232.42441780585924}]
["Luminaire",{"$f":"'DNSP Inputs O & M'!$D$30","v":198.14863984126438},{"$f":"'DNSP Inputs O & M'!$D$37*'DNSP Inputs O & M'!$D$42","v":4.32},null,{"$f":"B80*C80","v":856.00212411426219},null,null,null,{"$f":"'DNSP Inputs O & M'!$D$30*(1+'DNSP Inputs O & M'!$D$11)","v":208.05607183332762},{"$f":"'DNSP Inputs O & M'!$D$38*'DNSP Inputs O & M'!$D$42","v":3.5999999999999996},null,{"$f":"I80*J80","v":749.00185859997941},null,null,null,{"$f":"'DNSP Inputs O & M'!$D$30*(1+'DNSP Inputs O & M'!$D$11)","v":208.05607183332762},{"$f":"'DNSP Inputs O & M'!$D$39*'DNSP Inputs O & M'!$D$42","v":2.88},null,{"$f":"P80*Q80","v":599.20148687998358},null,null,null,null,null,{"$f":"'DNSP Inputs O & M'!$E$30","v":198.14863984126438},{"$f":"'DNSP Inputs O & M'!$E$37*'DNSP Inputs O & M'!$E$42","v":4.32},null,{"$f":"Y80*Z80","v":856.00212411426219},null,null,null,{"$f":"'DNSP Inputs O & M'!$E$30*(1+'DNSP Inputs O & M'!$E$11)","v":208.05607183332762},{"$f":"'DNSP Inputs O & M'!$E$38*'DNSP Inputs O & M'!$E$42","v":3.5999999999999996},null,{"$f":"AF80*AG80","v":749.00185859997941},null,null,null,{"$f":"'DNSP Inputs O & M'!$E$30*(1+'DNSP Inputs O & M'!$E$11)","v":208.05607183332762},{"$f":"'DNSP Inputs O & M'!$E$39*'DNSP Inputs O & M'!$E$42","v":2.88},null,{"$f":"AM80*AN80","v":599.20148687998358},null,null,null,null,null,{"$f":"'DNSP Inputs O & M'!$F$30","v":198.14863984126438},{"$f":"'DNSP Inputs O & M'!$F$37*'DNSP Inputs O & M'!$F$42","v":4.32},null,{"$f":"AV80*AW80","v":856.00212411426219},null,null,null,{"$f":"'DNSP Inputs O & M'!$F$30*(1+'DNSP Inputs O & M'!$F$11)","v":208.05607183332762},{"$f":"'DNSP Inputs O & M'!$F$38*'DNSP Inputs O & M'!$F$42","v":3.5999999999999996},null,{"$f":"BC80*BD80","v":749.00185859997941},null,null,null,{"$f":"'DNSP Inputs O & M'!$F$30*(1+'DNSP Inputs O & M'!$F$11)","v":208.05607183332762},{"$f":"'DNSP Inputs O & M'!$F$39*'DNSP Inputs O & M'!$F$42","v":2.88},null,{"$f":"BJ80*BK80","v":599.20148687998358},null,null,null,null,null,{"$f":"'DNSP Inputs O & M'!$G$30","v":198.14863984126438},{"$f":"'DNSP Inputs O & M'!$G$37*'DNSP Inputs O & M'!$G$42","v":4.32},null,{"$f":"BS80*BT80","v":856.00212411426219},null,null,null,{"$f":"'DNSP Inputs O & M'!$G$30*(1+'DNSP Inputs O & M'!$G$11)","v":208.05607183332762},{"$f":"'DNSP Inputs O & M'!$G$38*'DNSP Inputs O & M'!$G$42","v":3.5999999999999996},null,{"$f":"BZ80*CA80","v":749.00185859997941},null,null,null,{"$f":"'DNSP Inputs O & M'!$G$30*(1+'DNSP Inputs O & M'!$G$11)","v":208.05607183332762},{"$f":"'DNSP Inputs O & M'!$G$39*'DNSP Inputs O & M'!$G$42","v":2.88},null,{"$f":"CG80*CH80","v":599.20148687998358},null,null,null,null,null,{"$f":"'DNSP Inputs O & M'!$H$30","v":198.14863984126438},{"$f":"'DNSP Inputs O & M'!$H$37*'DNSP Inputs O & M'!$H$42","v":4.32},null,{"$f":"CP80*CQ80","v":856.00212411426219},null,null,null,{"$f":"'DNSP Inputs O & M'!$H$30*(1+'DNSP Inputs O & M'!$H$11)","v":208.05607183332762},{"$f":"'DNSP Inputs O & M'!$H$38*'DNSP Inputs O & M'!$H$42","v":3.5999999999999996},null,{"$f":"CW80*CX80","v":749.00185859997941},null,null,null,{"$f":"'DNSP Inputs O & M'!$H$30*(1+'DNSP Inputs O & M'!$H$11)","v":208.05607183332762},{"$f":"'DNSP Inputs O & M'!$H$39*'DNSP Inputs O & M'!$H$42","v":2.88},null,{"$f":"DD80*DE80","v":599.20148687998358}]
["Miscellaneous",{"$f":"'DNSP Inputs O & M'!$D$32","v":12.497549028146603},{"$f":"'DNSP Inputs O & M'!$D$37*'DNSP Inputs O & M'!$D$43","v":2.8800000000000003},null,{"$f":"B81*C81","v":35.992941201062223},null,null,null,{"$f":"'DNSP Inputs O & M'!$D$32*(1+'DNSP Inputs O & M'!$D$11)","v":13.122426479553933},{"$f":"'DNSP Inputs O & M'!$D$38*'DNSP Inputs O & M'!$D$43","v":2.4000000000000004},null,{"$f":"I81*J81","v":31.493823550929445},null,null,null,{"$f":"'DNSP Inputs O & M'!$D$32*(1+'DNSP Inputs O & M'!$D$11)","v":13.122426479553933},{"$f":"'DNSP Inputs O & M'!$D$39*'DNSP Inputs O & M'!$D$43","v":1.92},null,{"$f":"P81*Q81","v":25.195058840743553},null,null,null,null,null,{"$f":"'DNSP Inputs O & M'!$E$32","v":12.497549028146603},{"$f":"'DNSP Inputs O & M'!$E$37*'DNSP Inputs O & M'!$E$43","v":2.8800000000000003},null,{"$f":"Y81*Z81","v":35.992941201062223},null,null,null,{"$f":"'DNSP Inputs O & M'!$E$32*(1+'DNSP Inputs O & M'!$E$11)","v":13.122426479553933},{"$f":"'DNSP Inputs O & M'!$E$38*'DNSP Inputs O & M'!$E$43","v":2.4000000000000004},null,{"$f":"AF81*AG81","v":31.493823550929445},null,null,null,{"$f":"'DNSP Inputs O & M'!$E$32*(1+'DNSP Inputs O & M'!$E$11)","v":13.122426479553933},{"$f":"'DNSP Inputs O & M'!$E$39*'DNSP Inputs O & M'!$E$43","v":1.92},null,{"$f":"AM81*AN81","v":25.195058840743553},null,null,null,null,null,{"$f":"'DNSP Inputs O & M'!$F$32","v":12.497549028146603},{"$f":"'DNSP Inputs O & M'!$F$37*'DNSP Inputs O & M'!$F$43","v":2.8800000000000003},null,{"$f":"AV81*AW81","v":35.992941201062223},null,null,null,{"$f":"'DNSP Inputs O & M'!$F$32*(1+'DNSP Inputs O & M'!$F$11)","v":13.122426479553933},{"$f":"'DNSP Inputs O & M'!$F$38*'DNSP Inputs O & M'!$F$43","v":2.4000000000000004},null,{"$f":"BC81*BD81","v":31.493823550929445},null,null,null,{"$f":"'DNSP Inputs O & M'!$F$32*(1+'DNSP Inputs O & M'!$F$11)","v":13.122426479553933},{"$f":"'DNSP Inputs O & M'!$F$39*'DNSP Inputs O & M'!$F$43","v":1.92},null,{"$f":"BJ81*BK81","v":25.195058840743553},null,null,null,null,null,{"$f":"'DNSP Inputs O & M'!$G$32","v":12.497549028146603},{"$f":"'DNSP Inputs O & M'!$G$37*'DNSP Inputs O & M'!$G$43","v":2.8800000000000003},null,{"$f":"BS81*BT81","v":35.992941201062223},null,null,null,{"$f":"'DNSP Inputs O & M'!$G$32*(1+'DNSP Inputs O & M'!$G$11)","v":13.122426479553933},{"$f":"'DNSP Inputs O & M'!$G$38*'DNSP Inputs O & M'!$G$43","v":2.4000000000000004},null,{"$f":"BZ81*CA81","v":31.493823550929445},null,null,null,{"$f":"'DNSP Inputs O & M'!$G$32*(1+'DNSP Inputs O & M'!$G$11)","v":13.122426479553933},{"$f":"'DNSP Inputs O & M'!$G$39*'DNSP Inputs O & M'!$G$43","v":1.92},null,{"$f":"CG81*CH81","v":25.195058840743553},null,null,null,null,null,{"$f":"'DNSP Inputs O & M'!$H$32","v":12.497549028146603},{"$f":"'DNSP Inputs O & M'!$H$37*'DNSP Inputs O & M'!$H$43","v":2.8800000000000003},null,{"$f":"CP81*CQ81","v":35.992941201062223},null,null,null,{"$f":"'DNSP Inputs O & M'!$H$32*(1+'DNSP Inputs O & M'!$H$11)","v":13.122426479553933},{"$f":"'DNSP Inputs O & M'!$H$38*'DNSP Inputs O & M'!$H$43","v":2.4000000000000004},null,{"$f":"CW81*CX81","v":31.493823550929445},null,null,null,{"$f":"'DNSP Inputs O & M'!$H$32*(1+'DNSP Inputs O & M'!$H$11)","v":13.122426479553933},{"$f":"'DNSP Inputs O & M'!$H$39*'DNSP Inputs O & M'!$H$43","v":1.92},null,{"$f":"DD81*DE81","v":25.195058840743553}]
["Labour - bulk lamp change"]
["Crew costs",{"$f":"'DNSP Inputs O & M'!$D$12","v":100},{"$f":"'DNSP Inputs O & M'!$D$33","v":2},{"$f":"'DNSP Inputs O & M'!$D$17","v":8},{"$f":"B83*C83*D83","v":1600},{"$f":"E83/'DNSP Inputs O & M'!$D$25*(C74+C75)/C74*0.8","v":480},{"$f":"(F83+F84)/C74","v":6.8161111111111108},null,{"$f":"'DNSP Inputs O & M'!$D$12","v":100},{"$f":"'DNSP Inputs O & M'!$D$33","v":2},{"$f":"'DNSP Inputs O & M'!$D$17","v":8},{"$f":"I83*J83*K83","v":1600},{"$f":"L83/'DNSP Inputs O & M'!$D$25*(J74+J75)/J74*0.8","v":480},{"$f":"(M83+M84)/J$74","v":8.5851151843482967},null,{"$f":"'DNSP Inputs O & M'!$D$12","v":100},{"$f":"'DNSP Inputs O & M'!$D$33","v":2},{"$f":"'DNSP Inputs O & M'!$D$17","v":8},{"$f":"P83*Q83*R83","v":1600},{"$f":"S83/'DNSP Inputs O & M'!$D$25*(Q74+Q75)/Q74*0.8","v":480},{"$f":"(T83+T84)/Q74","v":10.302138221217955},null,null,null,{"$f":"'DNSP Inputs O & M'!$E$12","v":100.37},{"$f":"'DNSP Inputs O & M'!$E$33","v":2},{"$f":"'DNSP Inputs O & M'!$E$17","v":8},{"$f":"Y83*Z83*AA83","v":1605.92},{"$f":"AB83/'DNSP Inputs O & M'!$E$25*(Z74+Z75)/Z74*0.8","v":481.77600000000012},{"$f":"(AC83+AC84)/Z74","v":6.8366666666666678},null,{"$f":"'DNSP Inputs O & M'!$E$12","v":100.37},{"$f":"'DNSP Inputs O & M'!$E$33","v":2},{"$f":"'DNSP Inputs O & M'!$E$17","v":8},{"$f":"AF83*AG83*AH83","v":1605.92},{"$f":"AI83/'DNSP Inputs O & M'!$E$25*(AG74+AG75)/AG74*0.8","v":481.77600000000007},{"$f":"(AJ83+AJ84)/AG$74","v":8.6511051572925126},null,{"$f":"'DNSP Inputs O & M'!$E$12","v":100.37},{"$f":"'DNSP Inputs O & M'!$E$33","v":2},{"$f":"'DNSP Inputs O & M'!$E$17","v":8},{"$f":"AM83*AN83*AO83","v":1605.92},{"$f":"AP83/'DNSP Inputs O & M'!$E$25*(AN74+AN75)/AN74*0.8","v":481.77600000000007},{"$f":"(AQ83+AQ84)/AN74","v":10.381326188751016},null,null,null,{"$f":"'DNSP Inputs O & M'!$F$12","v":101.16292300000001},{"$f":"'DNSP Inputs O & M'!$F$33","v":2},{"$f":"'DNSP Inputs O & M'!$F$17","v":8},{"$f":"AV83*AW83*AX83","v":1618.6067680000001},{"$f":"AY83/'DNSP Inputs O & M'!$F$25*(AW74+AW75)/AW74*0.8","v":485.58203040000012},{"$f":"(AZ83+AZ84)/AW74","v":6.880717944444446},null,{"$f":"'DNSP Inputs O & M'!$F$12","v":101.16292300000001},{"$f":"'DNSP Inputs O & M'!$F$33","v":2},{"$f":"'DNSP Inputs O & M'!$F$17","v":8},{"$f":"BC83*BD83*BE83","v":1618.6067680000001},{"$f":"BF83/'DNSP Inputs O & M'!$F$25*(BD74+BD75)/BD74*0.8","v":485.58203040000001},{"$f":"(BG83+BG84)/BD$74","v":8.7379666306516484},null,{"$f":"'DNSP Inputs O & M'!$F$12","v":101.16292300000001},{"$f":"'DNSP Inputs O & M'!$F$33","v":2},{"$f":"'DNSP Inputs O & M'!$F$17","v":8},{"$f":"BJ83*BK83*BL83","v":1618.6067680000001},{"$f":"BM83/'DNSP Inputs O & M'!$F$25*(BK74+BK75)/BK74*0.8","v":485.58203040000001},{"$f":"(BN83+BN84)/BK74","v":10.485559956781977},null,null,null,{"$f":"'DNSP Inputs O & M'!$G$12","v":102.13408706080001},{"$f":"'DNSP Inputs O & M'!$G$33","v":2},{"$f":"'DNSP Inputs O & M'!$G$17","v":8},{"$f":"BS83*BT83*BU83","v":1634.1453929728002},{"$f":"BV83/'DNSP Inputs O & M'!$G$25*(BT74+BT75)/BT74*0.8","v":490.24361789184013},{"$f":"(BW83+BW84)/BT74","v":6.9346715033777793},null,{"$f":"'DNSP Inputs O & M'!$G$12","v":102.13408706080001},{"$f":"'DNSP Inputs O & M'!$G$33","v":2},{"$f":"'DNSP Inputs O & M'!$G$17","v":8},{"$f":"BZ83*CA83*CB83","v":1634.1453929728002},{"$f":"CC83/'DNSP Inputs O & M'!$G$25*(CA74+CA75)/CA74*0.8","v":490.24361789184007},{"$f":"(CD83+CD84)/CA$74","v":8.8369120544380575},null,{"$f":"'DNSP Inputs O & M'!$G$12","v":102.13408706080001},{"$f":"'DNSP Inputs O & M'!$G$33","v":2},{"$f":"'DNSP Inputs O & M'!$G$17","v":8},{"$f":"CG83*CH83*CI83","v":1634.1453929728002},{"$f":"CJ83/'DNSP Inputs O & M'!$G$25*(CH74+CH75)/CH74*0.8","v":490.24361789184007},{"$f":"(CK83+CK84)/CH74","v":10.604294465325669},null,null,null,{"$f":"'DNSP Inputs O & M'!$H$12","v":103.17585474882017},{"$f":"'DNSP Inputs O & M'!$H$33","v":2},{"$f":"'DNSP Inputs O & M'!$H$17","v":8},{"$f":"CP83*CQ83*CR83","v":1650.8136759811227},{"$f":"CS83/'DNSP Inputs O & M'!$H$25*(CQ74+CQ75)/CQ74*0.8","v":495.24410279433687},{"$f":"(CT83+CT84)/CQ74","v":6.9925474860455656},null,{"$f":"'DNSP Inputs O & M'!$H$12","v":103.17585474882017},{"$f":"'DNSP Inputs O & M'!$H$33","v":2},{"$f":"'DNSP Inputs O & M'!$H$17","v":8},{"$f":"CW83*CX83*CY83","v":1650.8136759811227},{"$f":"CZ83/'DNSP Inputs O & M'!$H$25*(CX74+CX75)/CX74*0.8","v":495.24410279433687},{"$f":"(DA83+DA84)/CX$74","v":8.9417440476893244},null,{"$f":"'DNSP Inputs O & M'!$H$12","v":103.17585474882017},{"$f":"'DNSP Inputs O & M'!$H$33","v":2},{"$f":"'DNSP Inputs O & M'!$H$17","v":8},{"$f":"DD83*DE83*DF83","v":1650.8136759811227},{"$f":"DG83/'DNSP Inputs O & M'!$H$25*(DE74+DE75)/DE74*0.8","v":495.24410279433681},{"$f":"(DH83+DH84)/DE74","v":10.730092857227188}]
["Elevated platform costs",{"$f":"'DNSP Inputs O & M'!$D$14","v":45.38},1,{"$f":"'DNSP Inputs O & M'!$D$17","v":8},{"$f":"B84*C84*D84","v":363.04},{"$f":"E84/'DNSP Inputs O & M'!$D$25*(C74+C75)/C74*0.8","v":108.91200000000002},null,null,{"$f":"'DNSP Inputs O & M'!$D$15","v":57.553455530448915},1,{"$f":"'DNSP Inputs O & M'!$D$17","v":8},{"$f":"I84*J84*K84","v":460.42764424359132},{"$f":"L84/'DNSP Inputs O & M'!$D$25*(J74+J75)/J74*0.8","v":138.12829327307742},null,null,{"$f":"'DNSP Inputs O & M'!$D$15","v":57.553455530448915},1,{"$f":"'DNSP Inputs O & M'!$D$17","v":8},{"$f":"P84*Q84*R84","v":460.42764424359132},{"$f":"S84/'DNSP Inputs O & M'!$D$25*(Q74+Q75)/Q74*0.8","v":138.12829327307739},null,null,null,null,{"$f":"'DNSP Inputs O & M'!$E$14","v":45.38},1,{"$f":"'DNSP Inputs O & M'!$E$17","v":8},{"$f":"Y84*Z84*AA84","v":363.04},{"$f":"AB84/'DNSP Inputs O & M'!$E$25*(Z74+Z75)/Z74*0.8","v":108.91200000000002},null,null,{"$f":"'DNSP Inputs O & M'!$E$15","v":58.793154718775355},1,{"$f":"'DNSP Inputs O & M'!$E$17","v":8},{"$f":"AF84*AG84*AH84","v":470.34523775020284},{"$f":"AI84/'DNSP Inputs O & M'!$E$25*(AG74+AG75)/AG74*0.8","v":141.10357132506087},null,null,{"$f":"'DNSP Inputs O & M'!$E$15","v":58.793154718775355},1,{"$f":"'DNSP Inputs O & M'!$E$17","v":8},{"$f":"AM84*AN84*AO84","v":470.34523775020284},{"$f":"AP84/'DNSP Inputs O & M'!$E$25*(AN74+AN75)/AN74*0.8","v":141.10357132506087},null,null,null,null,{"$f":"'DNSP Inputs O & M'!$F$14","v":45.38},1,{"$f":"'DNSP Inputs O & M'!$F$17","v":8},{"$f":"AV84*AW84*AX84","v":363.04},{"$f":"AY84/'DNSP Inputs O & M'!$F$25*(AW74+AW75)/AW74*0.8","v":108.91200000000002},null,null,{"$f":"'DNSP Inputs O & M'!$F$15","v":59.813152919549431},1,{"$f":"'DNSP Inputs O & M'!$F$17","v":8},{"$f":"BC84*BD84*BE84","v":478.50522335639545},{"$f":"BF84/'DNSP Inputs O & M'!$F$25*(BD74+BD75)/BD74*0.8","v":143.55156700691865},null,null,{"$f":"'DNSP Inputs O & M'!$F$15","v":59.813152919549431},1,{"$f":"'DNSP Inputs O & M'!$F$17","v":8},{"$f":"BJ84*BK84*BL84","v":478.50522335639545},{"$f":"BM84/'DNSP Inputs O & M'!$F$25*(BK74+BK75)/BK74*0.8","v":143.55156700691865},null,null,null,null,{"$f":"'DNSP Inputs O & M'!$G$14","v":45.38},1,{"$f":"'DNSP Inputs O & M'!$G$17","v":8},{"$f":"BS84*BT84*BU84","v":363.04},{"$f":"BV84/'DNSP Inputs O & M'!$G$25*(BT74+BT75)/BT74*0.8","v":108.91200000000002},null,null,{"$f":"'DNSP Inputs O & M'!$G$15","v":60.839187511541702},1,{"$f":"'DNSP Inputs O & M'!$G$17","v":8},{"$f":"BZ84*CA84*CB84","v":486.71350009233362},{"$f":"CC84/'DNSP Inputs O & M'!$G$25*(CA74+CA75)/CA74*0.8","v":146.01405002770011},null,null,{"$f":"'DNSP Inputs O & M'!$G$15","v":60.839187511541702},1,{"$f":"'DNSP Inputs O & M'!$G$17","v":8},{"$f":"CG84*CH84*CI84","v":486.71350009233362},{"$f":"CJ84/'DNSP Inputs O & M'!$G$25*(CH74+CH75)/CH74*0.8","v":146.01405002770011},null,null,null,null,{"$f":"'DNSP Inputs O & M'!$H$14","v":45.38},1,{"$f":"'DNSP Inputs O & M'!$H$17","v":8},{"$f":"CP84*CQ84*CR84","v":363.04},{"$f":"CS84/'DNSP Inputs O & M'!$H$25*(CQ74+CQ75)/CQ74*0.8","v":108.91200000000002},null,null,{"$f":"'DNSP Inputs O & M'!$H$15","v":61.900611933039357},1,{"$f":"'DNSP Inputs O & M'!$H$17","v":8},{"$f":"CW84*CX84*CY84","v":495.20489546431486},{"$f":"CZ84/'DNSP Inputs O & M'!$H$25*(CX74+CX75)/CX74*0.8","v":148.56146863929447},null,null,{"$f":"'DNSP Inputs O & M'!$H$15","v":61.900611933039357},1,{"$f":"'DNSP Inputs O & M'!$H$17","v":8},{"$f":"DD84*DE84*DF84","v":495.20489546431486},{"$f":"DG84/'DNSP Inputs O & M'!$H$25*(DE74+DE75)/DE74*0.8","v":148.56146863929447}]
["Labour - repair of faults"]
["Crew costs",{"$f":"'DNSP Inputs O & M'!$D$12","v":100},{"$f":"'DNSP Inputs O & M'!$D$33","v":2},{"$f":"'DNSP Inputs O & M'!$D$17","v":8},{"$f":"B86*C86*D86","v":1600},{"$f":"(E86+E87)/'DNSP Inputs O & M'!$D$37","v":68.161111111111111},{"$f":"F86*D63","v":2.6489874653886192},null,{"$f":"'DNSP Inputs O & M'!$D$12","v":100},{"$f":"'DNSP Inputs O & M'!$D$33","v":2},{"$f":"'DNSP Inputs O & M'!$D$17","v":8},{"$f":"I86*J86*K86","v":1600},{"$f":"(L86+L87)/'DNSP Inputs O & M'!$D$38","v":85.851151843482967},{"$f":"M86*$D$63","v":3.3364864717630658},null,{"$f":"'DNSP Inputs O & M'!$D$12","v":100},{"$f":"'DNSP Inputs O & M'!$D$33","v":2},{"$f":"'DNSP Inputs O & M'!$D$17","v":8},{"$f":"P86*Q86*R86","v":1600},{"$f":"(S86+S87)/'DNSP Inputs O & M'!$D$39","v":107.31393980435371},{"$f":"T86*D63","v":4.1706080897038325},null,null,null,{"$f":"'DNSP Inputs O & M'!$E$12","v":100.37},{"$f":"'DNSP Inputs O & M'!$E$33","v":2},{"$f":"'DNSP Inputs O & M'!$E$17","v":8},{"$f":"Y86*Z86*AA86","v":1605.92},{"$f":"(AB86+AB87)/'DNSP Inputs O & M'!$E$37","v":68.36666666666666},{"$f":"AC86*AA63","v":2.6569760982209099},null,{"$f":"'DNSP Inputs O & M'!$E$12","v":100.37},{"$f":"'DNSP Inputs O & M'!$E$33","v":2},{"$f":"'DNSP Inputs O & M'!$E$17","v":8},{"$f":"AF86*AG86*AH86","v":1605.92},{"$f":"(AI86+AI87)/'DNSP Inputs O & M'!$E$38","v":86.511051572925112},{"$f":"AJ86*$AA$63","v":3.3621325635478083},null,{"$f":"'DNSP Inputs O & M'!$E$12","v":100.37},{"$f":"'DNSP Inputs O & M'!$E$33","v":2},{"$f":"'DNSP Inputs O & M'!$E$17","v":8},{"$f":"AM86*AN86*AO86","v":1605.92},{"$f":"(AP86+AP87)/'DNSP Inputs O & M'!$E$39","v":108.13881446615639},{"$f":"AQ86*AA63","v":4.20266570443476},null,null,null,{"$f":"'DNSP Inputs O & M'!$F$12","v":101.16292300000001},{"$f":"'DNSP Inputs O & M'!$F$33","v":2},{"$f":"'DNSP Inputs O & M'!$F$17","v":8},{"$f":"AV86*AW86*AX86","v":1618.6067680000001},{"$f":"(AY86+AY87)/'DNSP Inputs O & M'!$F$37","v":68.807179444444444},{"$f":"AZ86*AX63","v":2.6740960190622038},null,{"$f":"'DNSP Inputs O & M'!$F$12","v":101.16292300000001},{"$f":"'DNSP Inputs O & M'!$F$33","v":2},{"$f":"'DNSP Inputs O & M'!$F$17","v":8},{"$f":"BC86*BD86*BE86","v":1618.6067680000001},{"$f":"(BF86+BF87)/'DNSP Inputs O & M'!$F$38","v":87.379666306516484},{"$f":"BG86*$AX$63","v":3.3958900757718178},null,{"$f":"'DNSP Inputs O & M'!$F$12","v":101.16292300000001},{"$f":"'DNSP Inputs O & M'!$F$33","v":2},{"$f":"'DNSP Inputs O & M'!$F$17","v":8},{"$f":"BJ86*BK86*BL86","v":1618.6067680000001},{"$f":"(BM86+BM87)/'DNSP Inputs O & M'!$F$39","v":109.22458288314562},{"$f":"BN86*AX63","v":4.2448625947147729},null,null,null,{"$f":"'DNSP Inputs O & M'!$G$12","v":102.13408706080001},{"$f":"'DNSP Inputs O & M'!$G$33","v":2},{"$f":"'DNSP Inputs O & M'!$G$17","v":8},{"$f":"BS86*BT86*BU86","v":1634.1453929728002},{"$f":"(BV86+BV87)/'DNSP Inputs O & M'!$G$37","v":69.346715033777784},{"$f":"BW86*BU63","v":2.6950643247423338},null,{"$f":"'DNSP Inputs O & M'!$G$12","v":102.13408706080001},{"$f":"'DNSP Inputs O & M'!$G$33","v":2},{"$f":"'DNSP Inputs O & M'!$G$17","v":8},{"$f":"BZ86*CA86*CB86","v":1634.1453929728002},{"$f":"(CC86+CC87)/'DNSP Inputs O & M'!$G$38","v":88.369120544380579},{"$f":"CD86*$BU$63","v":3.4343438484722806},null,{"$f":"'DNSP Inputs O & M'!$G$12","v":102.13408706080001},{"$f":"'DNSP Inputs O & M'!$G$33","v":2},{"$f":"'DNSP Inputs O & M'!$G$17","v":8},{"$f":"CG86*CH86*CI86","v":1634.1453929728002},{"$f":"(CJ86+CJ87)/'DNSP Inputs O & M'!$G$39","v":110.46140068047573},{"$f":"CK86*BU63","v":4.2929298105903513},null,null,null,{"$f":"'DNSP Inputs O & M'!$H$12","v":103.17585474882017},{"$f":"'DNSP Inputs O & M'!$H$33","v":2},{"$f":"'DNSP Inputs O & M'!$H$17","v":8},{"$f":"CP86*CQ86*CR86","v":1650.8136759811227},{"$f":"(CS86+CS87)/'DNSP Inputs O & M'!$H$37","v":69.925474860455651},{"$f":"CT86*CR63","v":2.7175570262454087},null,{"$f":"'DNSP Inputs O & M'!$H$12","v":103.17585474882017},{"$f":"'DNSP Inputs O & M'!$H$33","v":2},{"$f":"'DNSP Inputs O & M'!$H$17","v":8},{"$f":"CW86*CX86*CY86","v":1650.8136759811227},{"$f":"(CZ86+CZ87)/'DNSP Inputs O & M'!$H$38","v":89.417440476893219},{"$f":"DA86*$CR$63","v":3.4750853551125727},null,{"$f":"'DNSP Inputs O & M'!$H$12","v":103.17585474882017},{"$f":"'DNSP Inputs O & M'!$H$33","v":2},{"$f":"'DNSP Inputs O & M'!$H$17","v":8},{"$f":"DD86*DE86*DF86","v":1650.8136759811227},{"$f":"(DG86+DG87)/'DNSP Inputs O & M'!$H$39","v":111.77180059611653},{"$f":"DH86*CR63","v":4.3438566938907162}]
["Elevated platform costs",{"$f":"'DNSP Inputs O & M'!$D$14","v":45.38},1,{"$f":"'DNSP Inputs O & M'!$D$17","v":8},{"$f":"B87*C87*D87","v":363.04},null,null,null,{"$f":"'DNSP Inputs O & M'!$D$15","v":57.553455530448915},1,{"$f":"'DNSP Inputs O & M'!$D$17","v":8},{"$f":"I87*J87*K87","v":460.42764424359132},null,null,null,{"$f":"'DNSP Inputs O & M'!$D$15","v":57.553455530448915},1,{"$f":"'DNSP Inputs O & M'!$D$17","v":8},{"$f":"P87*Q87*R87","v":460.42764424359132},null,null,null,null,null,{"$f":"'DNSP Inputs O & M'!$E$14","v":45.38},1,{"$f":"'DNSP Inputs O & M'!$E$17","v":8},{"$f":"Y87*Z87*AA87","v":363.04},null,null,null,{"$f":"'DNSP Inputs O & M'!$E$15","v":58.793154718775355},1,{"$f":"'DNSP Inputs O & M'!$E$17","v":8},{"$f":"AF87*AG87*AH87","v":470.34523775020284},null,null,null,{"$f":"'DNSP Inputs O & M'!$E$15","v":58.793154718775355},1,{"$f":"'DNSP Inputs O & M'!$E$17","v":8},{"$f":"AM87*AN87*AO87","v":470.34523775020284},null,null,null,null,null,{"$f":"'DNSP Inputs O & M'!$F$14","v":45.38},1,{"$f":"'DNSP Inputs O & M'!$F$17","v":8},{"$f":"AV87*AW87*AX87","v":363.04},null,null,null,{"$f":"'DNSP Inputs O & M'!$F$15","v":59.813152919549431},1,{"$f":"'DNSP Inputs O & M'!$F$17","v":8},{"$f":"BC87*BD87*BE87","v":478.50522335639545},null,null,null,{"$f":"'DNSP Inputs O & M'!$F$15","v":59.813152919549431},1,{"$f":"'DNSP Inputs O & M'!$F$17","v":8},{"$f":"BJ87*BK87*BL87","v":478.50522335639545},null,null,null,null,null,{"$f":"'DNSP Inputs O & M'!$G$14","v":45.38},1,{"$f":"'DNSP Inputs O & M'!$G$17","v":8},{"$f":"BS87*BT87*BU87","v":363.04},null,null,null,{"$f":"'DNSP Inputs O & M'!$G$15","v":60.839187511541702},1,{"$f":"'DNSP Inputs O & M'!$G$17","v":8},{"$f":"BZ87*CA87*CB87","v":486.71350009233362},null,null,null,{"$f":"'DNSP Inputs O & M'!$G$15","v":60.839187511541702},1,{"$f":"'DNSP Inputs O & M'!$G$17","v":8},{"$f":"CG87*CH87*CI87","v":486.71350009233362},null,null,null,null,null,{"$f":"'DNSP Inputs O & M'!$H$14","v":45.38},1,{"$f":"'DNSP Inputs O & M'!$H$17","v":8},{"$f":"CP87*CQ87*CR87","v":363.04},null,null,null,{"$f":"'DNSP Inputs O & M'!$H$15","v":61.900611933039357},1,{"$f":"'DNSP Inputs O & M'!$H$17","v":8},{"$f":"CW87*CX87*CY87","v":495.20489546431486},null,null,null,{"$f":"'DNSP Inputs O & M'!$H$15","v":61.900611933039357},1,{"$f":"'DNSP Inputs O & M'!$H$17","v":8},{"$f":"DD87*DE87*DF87","v":495.20489546431486}]
["Other Maintenance and Repair costs",null,null,null,null,null,{"$f":"'DNSP Inputs O & M'!$D$50","v":0.64378113708622409},null,null,null,null,null,null,{"$f":"'DNSP Inputs O & M'!$D$50","v":0.64378113708622409},null,null,null,null,null,null,{"$f":"'DNSP Inputs O & M'!$D$50","v":0.64378113708622409},null,null,null,null,null,null,null,null,{"$f":"'DNSP Inputs O & M'!$E$50","v":0.75153109115374883},null,null,null,null,null,null,{"$f":"'DNSP Inputs O & M'!$E$50","v":0.75153109115374883},null,null,null,null,null,null,{"$f":"'DNSP Inputs O & M'!$E$50","v":0.75153109115374883},null,null,null,null,null,null,null,null,{"$f":"'DNSP Inputs O & M'!$F$50","v":0.82669768271338195},null,null,null,null,null,null,{"$f":"'DNSP Inputs O & M'!$F$50","v":0.82669768271338195},null,null,null,null,null,null,{"$f":"'DNSP Inputs O & M'!$F$50","v":0.82669768271338195},null,null,null,null,null,null,null,null,{"$f":"'DNSP Inputs O & M'!$G$50","v":0.90783025778764925},null,null,null,null,null,null,{"$f":"'DNSP Inputs O & M'!$G$50","v":0.90783025778764925},null,null,null,null,null,null,{"$f":"'DNSP Inputs O & M'!$G$50","v":0.90783025778764925},null,null,null,null,null,null,null,null,{"$f":"'DNSP Inputs O & M'!$H$50","v":0.99559577360109852},null,null,null,null,null,null,{"$f":"'DNSP Inputs O & M'!$H$50","v":0.99559577360109852},null,null,null,null,null,null,{"$f":"'DNSP Inputs O & M'!$H$50","v":0.99559577360109852}]
[]
["Overheads",{"$f":"'DNSP Inputs O & M'!$D$18","v":0.25},null,null,null,null,{"$f":"B90*SUM(G74:G88)","v":4.042069271023478},null,{"$f":"'DNSP Inputs O & M'!$D$18","v":0.25},null,null,null,null,{"$f":"I90*SUM(N74:N88)","v":4.7319375080577357},null,{"$f":"'DNSP Inputs O & M'!$D$18","v":0.25},null,null,null,null,{"$f":"P90*SUM(U74:U88)","v":5.3697236717603429},null,null,null,{"$f":"'DNSP Inputs O & M'!$E$18","v":0.25},null,null,null,null,{"$f":"Y90*SUM(AD74:AD88)","v":4.0761428066373204},null,{"$f":"'DNSP Inputs O & M'!$E$18","v":0.25},null,null,null,null,{"$f":"AF90*SUM(AK74:AK88)","v":4.7817840127568561},null,{"$f":"'DNSP Inputs O & M'!$E$18","v":0.25},null,null,null,null,{"$f":"AM90*SUM(AR74:AR88)","v":5.4244725558432201},null,null,null,{"$f":"'DNSP Inputs O & M'!$F$18","v":0.25},null,null,null,null,{"$f":"AV90*SUM(BA74:BA88)","v":4.1102272541819973},null,{"$f":"'DNSP Inputs O & M'!$F$18","v":0.25},null,null,null,null,{"$f":"BC90*SUM(BH74:BH88)","v":4.8307304070425507},null,{"$f":"'DNSP Inputs O & M'!$F$18","v":0.25},null,null,null,null,{"$f":"BJ90*SUM(BO74:BO88)","v":5.4798718683108714},null,null,null,{"$f":"'DNSP Inputs O & M'!$G$18","v":0.25},null,null,null,null,{"$f":"BS90*SUM(BX74:BX88)","v":4.1492408641039296},null,{"$f":"'DNSP Inputs O & M'!$G$18","v":0.25},null,null,null,null,{"$f":"BZ90*SUM(CE74:CE88)","v":4.8853633499328355},null,{"$f":"'DNSP Inputs O & M'!$G$18","v":0.25},null,null,null,null,{"$f":"CG90*SUM(CL74:CL88)","v":5.5418554431842564},null,null,null,{"$f":"'DNSP Inputs O & M'!$H$18","v":0.25},null,null,null,null,{"$f":"CP90*SUM(CU74:CU88)","v":4.1912744141000076},null,{"$f":"'DNSP Inputs O & M'!$H$18","v":0.25},null,null,null,null,{"$f":"CW90*SUM(DB74:DB88)","v":4.9436981038590879},null,{"$f":"'DNSP Inputs O & M'!$H$18","v":0.25},null,null,null,null,{"$f":"DD90*SUM(DI74:DI88)","v":5.6079781409380898}]
[]
[null,null,null,null,null,null,{"$f":"SUM(G74,G78,G83,G86,G88,G90)","v":20.210346355117391},null,null,null,null,null,null,{"$f":"SUM(N74,N78,N83,N86,N88,N90)","v":23.659687540288679},null,null,null,null,null,null,{"$f":"SUM(U74,U78,U83,U86,U88,U90)","v":26.848618358801716},null,null,null,null,null,null,null,null,{"$f":"SUM(AD74,AD78,AD83,AD86,AD88,AD90)","v":20.380714033186603},null,null,null,null,null,null,{"$f":"SUM(AK74,AK78,AK83,AK86,AK88,AK90)","v":23.908920063784279},null,null,null,null,null,null,{"$f":"SUM(AR74,AR78,AR83,AR86,AR88,AR90)","v":27.1223627792161},null,null,null,null,null,null,null,null,{"$f":"SUM(BA74,BA78,BA83,BA86,BA88,BA90)","v":20.551136270909986},null,null,null,null,null,null,{"$f":"SUM(BH74,BH78,BH83,BH86,BH88,BH90)","v":24.153652035212755},null,null,null,null,null,null,{"$f":"SUM(BO74,BO78,BO83,BO86,BO88,BO90)","v":27.399359341554359},null,null,null,null,null,null,null,null,{"$f":"SUM(BX74,BX78,BX83,BX86,BX88,BX90)","v":20.746204320519649},null,null,null,null,null,null,{"$f":"SUM(CE74,CE78,CE83,CE86,CE88,CE90)","v":24.426816749664177},null,null,null,null,null,null,{"$f":"SUM(CL74,CL78,CL83,CL86,CL88,CL90)","v":27.709277215921283},null,null,null,null,null,null,null,null,{"$f":"SUM(CU74,CU78,CU83,CU86,CU88,CU90)","v":20.956372070500038},null,null,null,null,null,null,{"$f":"SUM(DB74,DB78,DB83,DB86,DB88,DB90)","v":24.71849051929544},null,null,null,null,null,null,{"$f":"SUM(DI74,DI78,DI83,DI86,DI88,DI90)","v":28.03989070469045}]
[]
["Dedicated poles - inspection"]
["Crew costs",{"$f":"'DNSP Inputs O & M'!$D$12","v":100},1,{"$f":"'DNSP Inputs O & M'!$D$17","v":8},{"$f":"B95*C95*D95","v":800},{"$f":"(E95+E96+E97)/'DNSP Inputs O & M'!$D$125","v":262.15999999999997},{"$f":"F95/'DNSP Inputs O & M'!$D$126","v":3.6411111111111105},null,{"$f":"'DNSP Inputs O & M'!$D$12","v":100},1,{"$f":"'DNSP Inputs O & M'!$D$17","v":8},{"$f":"I95*J95*K95","v":800},{"$f":"(L95+L96+L97)/'DNSP Inputs O & M'!$D$125","v":262.15999999999997},{"$f":"M95/'DNSP Inputs O & M'!$D$126","v":3.6411111111111105},null,{"$f":"'DNSP Inputs O & M'!$D$12","v":100},1,{"$f":"'DNSP Inputs O & M'!$D$17","v":8},{"$f":"P95*Q95*R95","v":800},{"$f":"(S95+S96+S97)/'DNSP Inputs O & M'!$D$125","v":262.15999999999997},{"$f":"T95/'DNSP Inputs O & M'!$D$126","v":3.6411111111111105},null,null,null,{"$f":"'DNSP Inputs O & M'!$E$12","v":100.37},1,{"$f":"'DNSP Inputs O & M'!$E$17","v":8},{"$f":"Y95*Z95*AA95","v":802.96},{"$f":"(AB95+AB96+AB97)/'DNSP Inputs O & M'!$E$125","v":262.89999999999998},{"$f":"AC95/'DNSP Inputs O & M'!$E$126","v":3.6513888888888886},null,{"$f":"'DNSP Inputs O & M'!$E$12","v":100.37},1,{"$f":"'DNSP Inputs O & M'!$E$17","v":8},{"$f":"AF95*AG95*AH95","v":802.96},{"$f":"(AI95+AI96+AI97)/'DNSP Inputs O & M'!$E$125","v":262.89999999999998},{"$f":"AJ95/'DNSP Inputs O & M'!$E$126","v":3.6513888888888886},null,{"$f":"'DNSP Inputs O & M'!$E$12","v":100.37},1,{"$f":"'DNSP Inputs O & M'!$E$17","v":8},{"$f":"AM95*AN95*AO95","v":802.96},{"$f":"(AP95+AP96+AP97)/'DNSP Inputs O & M'!$E$125","v":262.89999999999998},{"$f":"AQ95/'DNSP Inputs O & M'!$E$126","v":3.6513888888888886},null,null,null,{"$f":"'DNSP Inputs O & M'!$F$12","v":101.16292300000001},1,{"$f":"'DNSP Inputs O & M'!$F$17","v":8},{"$f":"AV95*AW95*AX95","v":809.30338400000005},{"$f":"(AY95+AY96+AY97)/'DNSP Inputs O & M'!$F$125","v":264.48584600000004},{"$f":"AZ95/'DNSP Inputs O & M'!$F$126","v":3.6734145277777781},null,{"$f":"'DNSP Inputs O & M'!$F$12","v":101.16292300000001},1,{"$f":"'DNSP Inputs O & M'!$F$17","v":8},{"$f":"BC95*BD95*BE95","v":809.30338400000005},{"$f":"(BF95+BF96+BF97)/'DNSP Inputs O & M'!$F$125","v":264.48584600000004},{"$f":"BG95/'DNSP Inputs O & M'!$F$126","v":3.6734145277777781},null,{"$f":"'DNSP Inputs O & M'!$F$12","v":101.16292300000001},1,{"$f":"'DNSP Inputs O & M'!$F$17","v":8},{"$f":"BJ95*BK95*BL95","v":809.30338400000005},{"$f":"(BM95+BM96+BM97)/'DNSP Inputs O & M'!$F$125","v":264.48584600000004},{"$f":"BN95/'DNSP Inputs O & M'!$F$126","v":3.6734145277777781},null,null,null,{"$f":"'DNSP Inputs O & M'!$G$12","v":102.13408706080001},1,{"$f":"'DNSP Inputs O & M'!$G$17","v":8},{"$f":"BS95*BT95*BU95","v":817.0726964864001},{"$f":"(BV95+BV96+BV97)/'DNSP Inputs O & M'!$G$125","v":266.42817412160002},{"$f":"BW95/'DNSP Inputs O & M'!$G$126","v":3.7003913072444448},null,{"$f":"'DNSP Inputs O & M'!$G$12","v":102.13408706080001},1,{"$f":"'DNSP Inputs O & M'!$G$17","v":8},{"$f":"BZ95*CA95*CB95","v":817.0726964864001},{"$f":"(CC95+CC96+CC97)/'DNSP Inputs O & M'!$G$125","v":266.42817412160002},{"$f":"CD95/'DNSP Inputs O & M'!$G$126","v":3.7003913072444448},null,{"$f":"'DNSP Inputs O & M'!$G$12","v":102.13408706080001},1,{"$f":"'DNSP Inputs O & M'!$G$17","v":8},{"$f":"CG95*CH95*CI95","v":817.0726964864001},{"$f":"(CJ95+CJ96+CJ97)/'DNSP Inputs O & M'!$G$125","v":266.42817412160002},{"$f":"CK95/'DNSP Inputs O & M'!$G$126","v":3.7003913072444448},null,null,null,{"$f":"'DNSP Inputs O & M'!$H$12","v":103.17585474882017},1,{"$f":"'DNSP Inputs O & M'!$H$17","v":8},{"$f":"CP95*CQ95*CR95","v":825.40683799056137},{"$f":"(CS95+CS96+CS97)/'DNSP Inputs O & M'!$H$125","v":268.51170949764037},{"$f":"CT95/'DNSP Inputs O & M'!$H$126","v":3.7293292985783384},null,{"$f":"'DNSP Inputs O & M'!$H$12","v":103.17585474882017},1,{"$f":"'DNSP Inputs O & M'!$H$17","v":8},{"$f":"CW95*CX95*CY95","v":825.40683799056137},{"$f":"(CZ95+CZ96+CZ97)/'DNSP Inputs O & M'!$H$125","v":268.51170949764037},{"$f":"DA95/'DNSP Inputs O & M'!$H$126","v":3.7293292985783384},null,{"$f":"'DNSP Inputs O & M'!$H$12","v":103.17585474882017},1,{"$f":"'DNSP Inputs O & M'!$H$17","v":8},{"$f":"DD95*DE95*DF95","v":825.40683799056137},{"$f":"(DG95+DG96+DG97)/'DNSP Inputs O & M'!$H$125","v":268.51170949764037},{"$f":"DH95/'DNSP Inputs O & M'!$H$126","v":3.7293292985783384}]
["Vehicle costs",{"$f":"'DNSP Inputs O & M'!$D$16","v":31.08},1,{"$f":"'DNSP Inputs O & M'!$D$17","v":8},{"$f":"B96*C96*D96","v":248.64},null,null,null,{"$f":"'DNSP Inputs O & M'!$D$16","v":31.08},1,{"$f":"'DNSP Inputs O & M'!$D$17","v":8},{"$f":"I96*J96*K96","v":248.64},null,null,null,{"$f":"'DNSP Inputs O & M'!$D$16","v":31.08},1,{"$f":"'DNSP Inputs O & M'!$D$17","v":8},{"$f":"P96*Q96*R96","v":248.64},null,null,null,null,null,{"$f":"'DNSP Inputs O & M'!$E$16","v":31.08},1,{"$f":"'DNSP Inputs O & M'!$E$17","v":8},{"$f":"Y96*Z96*AA96","v":248.64},null,null,null,{"$f":"'DNSP Inputs O & M'!$E$16","v":31.08},1,{"$f":"'DNSP Inputs O & M'!$E$17","v":8},{"$f":"AF96*AG96*AH96","v":248.64},null,null,null,{"$f":"'DNSP Inputs O & M'!$E$16","v":31.08},1,{"$f":"'DNSP Inputs O & M'!$E$17","v":8},{"$f":"AM96*AN96*AO96","v":248.64},null,null,null,null,null,{"$f":"'DNSP Inputs O & M'!$F$16","v":31.08},1,{"$f":"'DNSP Inputs O & M'!$F$17","v":8},{"$f":"AV96*AW96*AX96","v":248.64},null,null,null,{"$f":"'DNSP Inputs O & M'!$F$16","v":31.08},1,{"$f":"'DNSP Inputs O & M'!$F$17","v":8},{"$f":"BC96*BD96*BE96","v":248.64},null,null,null,{"$f":"'DNSP Inputs O & M'!$F$16","v":31.08},1,{"$f":"'DNSP Inputs O & M'!$F$17","v":8},{"$f":"BJ96*BK96*BL96","v":248.64},null,null,null,null,null,{"$f":"'DNSP Inputs O & M'!$G$16","v":31.08},1,{"$f":"'DNSP Inputs O & M'!$G$17","v":8},{"$f":"BS96*BT96*BU96","v":248.64},null,null,null,{"$f":"'DNSP Inputs O & M'!$G$16","v":31.08},1,{"$f":"'DNSP Inputs O & M'!$G$17","v":8},{"$f":"BZ96*CA96*CB96","v":248.64},null,null,null,{"$f":"'DNSP Inputs O & M'!$G$16","v":31.08},1,{"$f":"'DNSP Inputs O & M'!$G$17","v":8},{"$f":"CG96*CH96*CI96","v":248.64},null,null,null,null,null,{"$f":"'DNSP Inputs O & M'!$H$16","v":31.08},1,{"$f":"'DNSP Inputs O & M'!$H$17","v":8},{"$f":"CP96*CQ96*CR96","v":248.64},null,null,null,{"$f":"'DNSP Inputs O & M'!$H$16","v":31.08},1,{"$f":"'DNSP Inputs O & M'!$H$17","v":8},{"$f":"CW96*CX96*CY96","v":248.64},null,null,null,{"$f":"'DNSP Inputs O & M'!$H$16","v":31.08},1,{"$f":"'DNSP Inputs O & M'!$H$17","v":8},{"$f":"DD96*DE96*DF96","v":248.64}]
["Overheads",{"$f":"'DNSP Inputs O & M'!$D$18","v":0.25},null,null,{"$f":"B97*(E95+E96)","v":262.15999999999997},null,null,null,{"$f":"'DNSP Inputs O & M'!$D$18","v":0.25},null,null,{"$f":"I97*(L95+L96)","v":262.15999999999997},null,null,null,{"$f":"'DNSP Inputs O & M'!$D$18","v":0.25},null,null,{"$f":"P97*(S95+S96)","v":262.15999999999997},null,null,null,null,null,{"$f":"'DNSP Inputs O & M'!$E$18","v":0.25},null,null,{"$f":"Y97*(AB95+AB96)","v":262.89999999999998},null,null,null,{"$f":"'DNSP Inputs O & M'!$E$18","v":0.25},null,null,{"$f":"AF97*(AI95+AI96)","v":262.89999999999998},null,null,null,{"$f":"'DNSP Inputs O & M'!$E$18","v":0.25},null,null,{"$f":"AM97*(AP95+AP96)","v":262.89999999999998},null,null,null,null,null,{"$f":"'DNSP Inputs O & M'!$F$18","v":0.25},null,null,{"$f":"AV97*(AY95+AY96)","v":264.48584600000004},null,null,null,{"$f":"'DNSP Inputs O & M'!$F$18","v":0.25},null,null,{"$f":"BC97*(BF95+BF96)","v":264.48584600000004},null,null,null,{"$f":"'DNSP Inputs O & M'!$F$18","v":0.25},null,null,{"$f":"BJ97*(BM95+BM96)","v":264.48584600000004},null,null,null,null,null,{"$f":"'DNSP Inputs O & M'!$G$18","v":0.25},null,null,{"$f":"BS97*(BV95+BV96)","v":266.42817412160002},null,null,null,{"$f":"'DNSP Inputs O & M'!$G$18","v":0.25},null,null,{"$f":"BZ97*(CC95+CC96)","v":266.42817412160002},null,null,null,{"$f":"'DNSP Inputs O & M'!$G$18","v":0.25},null,null,{"$f":"CG97*(CJ95+CJ96)","v":266.42817412160002},null,null,null,null,null,{"$f":"'DNSP Inputs O & M'!$H$18","v":0.25},null,null,{"$f":"CP97*(CS95+CS96)","v":268.51170949764037},null,null,null,{"$f":"'DNSP Inputs O & M'!$H$18","v":0.25},null,null,{"$f":"CW97*(CZ95+CZ96)","v":268.51170949764037},null,null,null,{"$f":"'DNSP Inputs O & M'!$H$18","v":0.25},null,null,{"$f":"DD97*(DG95+DG96)","v":268.51170949764037}]
[]
[]
[]
[]
["Sodium High Pressure 150 Watt Standard Light Type - Cost build-up"]
[]
["Additional assumptions"]
["Overheads are applied to material and labour components"]
["All costs and charges are exclusive of GST"]
[]
[null,"Urban",null,null,null,null,null,null,"Rural",null,null,null,null,null,null,"Remote",null,null,null,null,null,null,null,null,"Urban",null,null,null,null,null,null,"Rural",null,null,null,null,null,null,"Remote",null,null,null,null,null,null,null,null,"Urban",null,null,null,null,null,null,"Rural",null,null,null,null,null,null,"Remote",null,null,null,null,null,null,null,null,"Urban",null,null,null,null,null,null,"Rural",null,null,null,null,null,null,"Remote",null,null,null,null,null,null,null,null,"Urban",null,null,null,null,null,null,"Rural",null,null,null,null,null,null,"Remote"]
[]
[null,"Unit rate","Number","Hours","Cost","Annualised","Annualised",null,"Unit rate","Number","Hours","Cost","Annualised","Annualised",null,"Unit rate","Number","Hours","Cost","Annualised","Annualised",null,null,null,"Unit rate","Number","Hours","Cost","Annualised","Annualised",null,"Unit rate","Number","Hours","Cost","Annualised","Annualised",null,"Unit rate","Number","Hours","Cost","Annualised","Annualised",null,null,null,"Unit rate","Number","Hours","Cost","Annualised","Annualised",null,"Unit rate","Number","Hours","Cost","Annualised","Annualised",null,"Unit rate","Number","Hours","Cost","Annualised","Annualised",null,null,null,"Unit rate","Number","Hours","Cost","Annualised","Annualised",null,"Unit rate","Number","Hours","Cost","Annualised","Annualised",null,"Unit rate","Number","Hours","Cost","Annualised","Annualised",null,null,null,"Unit rate","Number","Hours","Cost","Annualised","Annualised",null,"Unit rate","Number","Hours","Cost","Annualised","Annualised",null,"Unit rate","Number","Hours","Cost","Annualised","Annualised"]
[null,null,null,null,null," cost","unit cost",null,null,null,null,null," cost","unit cost",null,null,null,null,null," cost","unit cost",null,null,null,null,null,null,null," cost","unit cost",null,null,null,null,null," cost","unit cost",null,null,null,null,null," cost","unit cost",null,null,null,null,null,null,null," cost","unit cost",null,null,null,null,null," cost","unit cost",null,null,null,null,null," cost","unit cost",null,null,null,null,null,null,null," cost","unit cost",null,null,null,null,null," cost","unit cost",null,null,null,null,null," cost","unit cost",null,null,null,null,null,null,null," cost","unit cost",null,null,null,null,null," cost","unit cost",null,null,null,null,null," cost","unit cost"]
["S-HP 150"]
["Patrols and repairs"]
["Materials"]
["Lamp",{"$f":"'DNSP Inputs O & M'!$D$65","v":41.304399538024512},{"$f":"'DNSP Inputs O & M'!$D$73","v":19.2},null,{"$f":"B115*C115","v":793.04447113007063},{"$f":"(E115+E116+E117)/'DNSP Inputs O & M'!$D$73","v":55.020459596415414},{"$f":"F115/'DNSP Inputs O & M'!$D$63","v":11.004091919283082},null,{"$f":"'DNSP Inputs O & M'!$D$65*(1+'DNSP Inputs O & M'!$D$11)","v":43.369619514925738},{"$f":"'DNSP Inputs O & M'!$D$74","v":15.36},null,{"$f":"I115*J115","v":666.1573557492593},{"$f":"(L115+L116+L117)/'DNSP Inputs O & M'!$D$74","v":57.771482576236181},{"$f":"M115/'DNSP Inputs O & M'!$D$63","v":11.554296515247236},null,{"$f":"'DNSP Inputs O & M'!$D$65*(1+'DNSP Inputs O & M'!$D$11)","v":43.369619514925738},{"$f":"'DNSP Inputs O & M'!$D$75","v":11.52},null,{"$f":"P115*Q115","v":499.61801681194447},{"$f":"(S115+S116+S117)/'DNSP Inputs O & M'!$D$75","v":57.771482576236181},{"$f":"T115/'DNSP Inputs O & M'!$D$63","v":11.554296515247236},null,null,null,{"$f":"'DNSP Inputs O & M'!$E$65","v":41.304399538024512},{"$f":"'DNSP Inputs O & M'!$E$73","v":19.2},null,{"$f":"Y115*Z115","v":793.04447113007063},{"$f":"(AB115+AB116+AB117)/'DNSP Inputs O & M'!$E$73","v":55.020459596415414},{"$f":"AC115/'DNSP Inputs O & M'!$E$63","v":11.004091919283082},null,{"$f":"'DNSP Inputs O & M'!$E$65*(1+'DNSP Inputs O & M'!$E$11)","v":43.369619514925738},{"$f":"'DNSP Inputs O & M'!$E$74","v":15.36},null,{"$f":"AF115*AG115","v":666.1573557492593},{"$f":"(AI115+AI116+AI117)/'DNSP Inputs O & M'!$E$74","v":57.771482576236181},{"$f":"AJ115/'DNSP Inputs O & M'!$E$63","v":11.554296515247236},null,{"$f":"'DNSP Inputs O & M'!$E$65*(1+'DNSP Inputs O & M'!$E$11)","v":43.369619514925738},{"$f":"'DNSP Inputs O & M'!$E$75","v":11.52},null,{"$f":"AM115*AN115","v":499.61801681194447},{"$f":"(AP115+AP116+AP117)/'DNSP Inputs O & M'!$E$75","v":57.771482576236181},{"$f":"AQ115/'DNSP Inputs O & M'!$E$63","v":11.554296515247236},null,null,null,{"$f":"'DNSP Inputs O & M'!$F$65","v":41.304399538024512},{"$f":"'DNSP Inputs O & M'!$F$73","v":19.2},null,{"$f":"AV115*AW115","v":793.04447113007063},{"$f":"(AY115+AY116+AY117)/'DNSP Inputs O & M'!$F$73","v":55.020459596415414},{"$f":"AZ115/'DNSP Inputs O & M'!$F$63","v":11.004091919283082},null,{"$f":"'DNSP Inputs O & M'!$F$65*(1+'DNSP Inputs O & M'!$F$11)","v":43.369619514925738},{"$f":"'DNSP Inputs O & M'!$F$74","v":15.36},null,{"$f":"BC115*BD115","v":666.1573557492593},{"$f":"(BF115+BF116+BF117)/'DNSP Inputs O & M'!$F$74","v":57.771482576236181},{"$f":"BG115/'DNSP Inputs O & M'!$F$63","v":11.554296515247236},null,{"$f":"'DNSP Inputs O & M'!$F$65*(1+'DNSP Inputs O & M'!$F$11)","v":43.369619514925738},{"$f":"'DNSP Inputs O & M'!$F$75","v":11.52},null,{"$f":"BJ115*BK115","v":499.61801681194447},{"$f":"(BM115+BM116+BM117)/'DNSP Inputs O & M'!$F$75","v":57.771482576236181},{"$f":"BN115/'DNSP Inputs O & M'!$F$63","v":11.554296515247236},null,null,null,{"$f":"'DNSP Inputs O & M'!$G$65","v":41.304399538024512},{"$f":"'DNSP Inputs O & M'!$G$73","v":19.2},null,{"$f":"BS115*BT115","v":793.04447113007063},{"$f":"(BV115+BV116+BV117)/'DNSP Inputs O & M'!$G$73","v":55.020459596415414},{"$f":"BW115/'DNSP Inputs O & M'!$G$63","v":11.004091919283082},null,{"$f":"'DNSP Inputs O & M'!$G$65*(1+'DNSP Inputs O & M'!$G$11)","v":43.369619514925738},{"$f":"'DNSP Inputs O & M'!$G$74","v":15.36},null,{"$f":"BZ115*CA115","v":666.1573557492593},{"$f":"(CC115+CC116+CC117)/'DNSP Inputs O & M'!$G$74","v":57.771482576236181},{"$f":"CD115/'DNSP Inputs O & M'!$G$63","v":11.554296515247236},null,{"$f":"'DNSP Inputs O & M'!$G$65*(1+'DNSP Inputs O & M'!$G$11)","v":43.369619514925738},{"$f":"'DNSP Inputs O & M'!$G$75","v":11.52},null,{"$f":"CG115*CH115","v":499.61801681194447},{"$f":"(CJ115+CJ116+CJ117)/'DNSP Inputs O & M'!$G$75","v":57.771482576236181},{"$f":"CK115/'DNSP Inputs O & M'!$G$63","v":11.554296515247236},null,null,null,{"$f":"'DNSP Inputs O & M'!$H$65","v":41.304399538024512},{"$f":"'DNSP Inputs O & M'!$H$73","v":19.2},null,{"$f":"CP115*CQ115","v":793.04447113007063},{"$f":"(CS115+CS116+CS117)/'DNSP Inputs O & M'!$H$73","v":55.020459596415414},{"$f":"CT115/'DNSP Inputs O & M'!$H$63","v":11.004091919283082},null,{"$f":"'DNSP Inputs O & M'!$H$65*(1+'DNSP Inputs O & M'!$H$11)","v":43.369619514925738},{"$f":"'DNSP Inputs O & M'!$H$74","v":15.36},null,{"$f":"CW115*CX115","v":666.1573557492593},{"$f":"(CZ115+CZ116+CZ117)/'DNSP Inputs O & M'!$H$74","v":57.771482576236181},{"$f":"DA115/'DNSP Inputs O & M'!$H$63","v":11.554296515247236},null,{"$f":"'DNSP Inputs O & M'!$H$65*(1+'DNSP Inputs O & M'!$H$11)","v":43.369619514925738},{"$f":"'DNSP Inputs O & M'!$H$75","v":11.52},null,{"$f":"DD115*DE115","v":499.61801681194447},{"$f":"(DG115+DG116+DG117)/'DNSP Inputs O & M'!$H$75","v":57.771482576236181},{"$f":"DH115/'DNSP Inputs O & M'!$H$63","v":11.554296515247236}]
["PE cell",{"$f":"'DNSP Inputs O & M'!$D$66","v":22.43310050552315},{"$f":"C115*'DNSP Inputs O & M'!$D$63/'DNSP Inputs O & M'!$D$64","v":9.6},null,{"$f":"B116*C116","v":215.35776485302225},null,null,null,{"$f":"'DNSP Inputs O & M'!$D$66*(1+'DNSP Inputs O & M'!$D$11)","v":23.554755530799309},{"$f":"J115*'DNSP Inputs O & M'!$D$63/'DNSP Inputs O & M'!$D$64","v":7.68},null,{"$f":"I116*J116","v":180.9005224765387},null,null,null,{"$f":"'DNSP Inputs O & M'!$D$66*(1+'DNSP Inputs O & M'!$D$11)","v":23.554755530799309},{"$f":"Q115*'DNSP Inputs O & M'!$D$63/'DNSP Inputs O & M'!$D$64","v":5.76},null,{"$f":"P116*Q116","v":135.67539185740401},null,null,null,null,null,{"$f":"'DNSP Inputs O & M'!$E$66","v":22.43310050552315},{"$f":"Z115*'DNSP Inputs O & M'!$E$63/'DNSP Inputs O & M'!$E$64","v":9.6},null,{"$f":"Y116*Z116","v":215.35776485302225},null,null,null,{"$f":"'DNSP Inputs O & M'!$E$66*(1+'DNSP Inputs O & M'!$E$11)","v":23.554755530799309},{"$f":"AG115*'DNSP Inputs O & M'!$E$63/'DNSP Inputs O & M'!$E$64","v":7.68},null,{"$f":"AF116*AG116","v":180.9005224765387},null,null,null,{"$f":"'DNSP Inputs O & M'!$E$66*(1+'DNSP Inputs O & M'!$E$11)","v":23.554755530799309},{"$f":"AN115*'DNSP Inputs O & M'!$E$63/'DNSP Inputs O & M'!$E$64","v":5.76},null,{"$f":"AM116*AN116","v":135.67539185740401},null,null,null,null,null,{"$f":"'DNSP Inputs O & M'!$F$66","v":22.43310050552315},{"$f":"AW115*'DNSP Inputs O & M'!$F$63/'DNSP Inputs O & M'!$F$64","v":9.6},null,{"$f":"AV116*AW116","v":215.35776485302225},null,null,null,{"$f":"'DNSP Inputs O & M'!$F$66*(1+'DNSP Inputs O & M'!$F$11)","v":23.554755530799309},{"$f":"BD115*'DNSP Inputs O & M'!$F$63/'DNSP Inputs O & M'!$F$64","v":7.68},null,{"$f":"BC116*BD116","v":180.9005224765387},null,null,null,{"$f":"'DNSP Inputs O & M'!$F$66*(1+'DNSP Inputs O & M'!$F$11)","v":23.554755530799309},{"$f":"BK115*'DNSP Inputs O & M'!$F$63/'DNSP Inputs O & M'!$F$64","v":5.76},null,{"$f":"BJ116*BK116","v":135.67539185740401},null,null,null,null,null,{"$f":"'DNSP Inputs O & M'!$G$66","v":22.43310050552315},{"$f":"BT115*'DNSP Inputs O & M'!$G$63/'DNSP Inputs O & M'!$G$64","v":9.6},null,{"$f":"BS116*BT116","v":215.35776485302225},null,null,null,{"$f":"'DNSP Inputs O & M'!$G$66*(1+'DNSP Inputs O & M'!$G$11)","v":23.554755530799309},{"$f":"CA115*'DNSP Inputs O & M'!$G$63/'DNSP Inputs O & M'!$G$64","v":7.68},null,{"$f":"BZ116*CA116","v":180.9005224765387},null,null,null,{"$f":"'DNSP Inputs O & M'!$G$66*(1+'DNSP Inputs O & M'!$G$11)","v":23.554755530799309},{"$f":"CH115*'DNSP Inputs O & M'!$G$63/'DNSP Inputs O & M'!$G$64","v":5.76},null,{"$f":"CG116*CH116","v":135.67539185740401},null,null,null,null,null,{"$f":"'DNSP Inputs O & M'!$H$66","v":22.43310050552315},{"$f":"CQ115*'DNSP Inputs O & M'!$H$63/'DNSP Inputs O & M'!$H$64","v":9.6},null,{"$f":"CP116*CQ116","v":215.35776485302225},null,null,null,{"$f":"'DNSP Inputs O & M'!$H$66*(1+'DNSP Inputs O & M'!$H$11)","v":23.554755530799309},{"$f":"CX115*'DNSP Inputs O & M'!$H$63/'DNSP Inputs O & M'!$H$64","v":7.68},null,{"$f":"CW116*CX116","v":180.9005224765387},null,null,null,{"$f":"'DNSP Inputs O & M'!$H$66*(1+'DNSP Inputs O & M'!$H$11)","v":23.554755530799309},{"$f":"DE115*'DNSP Inputs O & M'!$H$63/'DNSP Inputs O & M'!$H$64","v":5.76},null,{"$f":"DD116*DE116","v":135.67539185740401}]
["Miscellaneous",{"$f":"'DNSP Inputs O & M'!$D$67","v":2.4995098056293203},{"$f":"'DNSP Inputs O & M'!$D$73","v":19.2},null,{"$f":"B117*C117","v":47.990588268082952},null,null,null,{"$f":"'DNSP Inputs O & M'!$D$67*(1+'DNSP Inputs O & M'!$D$11)","v":2.6244852959107865},{"$f":"'DNSP Inputs O & M'!$D$74","v":15.36},null,{"$f":"I117*J117","v":40.312094145189683},null,null,null,{"$f":"'DNSP Inputs O & M'!$D$67*(1+'DNSP Inputs O & M'!$D$11)","v":2.6244852959107865},{"$f":"'DNSP Inputs O & M'!$D$75","v":11.52},null,{"$f":"P117*Q117","v":30.23407060889226},null,null,null,null,null,{"$f":"'DNSP Inputs O & M'!$E$67","v":2.4995098056293203},{"$f":"'DNSP Inputs O & M'!$E$73","v":19.2},null,{"$f":"Y117*Z117","v":47.990588268082952},null,null,null,{"$f":"'DNSP Inputs O & M'!$E$67*(1+'DNSP Inputs O & M'!$E$11)","v":2.6244852959107865},{"$f":"'DNSP Inputs O & M'!$E$74","v":15.36},null,{"$f":"AF117*AG117","v":40.312094145189683},null,null,null,{"$f":"'DNSP Inputs O & M'!$E$67*(1+'DNSP Inputs O & M'!$E$11)","v":2.6244852959107865},{"$f":"'DNSP Inputs O & M'!$E$75","v":11.52},null,{"$f":"AM117*AN117","v":30.23407060889226},null,null,null,null,null,{"$f":"'DNSP Inputs O & M'!$F$67","v":2.4995098056293203},{"$f":"'DNSP Inputs O & M'!$F$73","v":19.2},null,{"$f":"AV117*AW117","v":47.990588268082952},null,null,null,{"$f":"'DNSP Inputs O & M'!$F$67*(1+'DNSP Inputs O & M'!$F$11)","v":2.6244852959107865},{"$f":"'DNSP Inputs O & M'!$F$74","v":15.36},null,{"$f":"BC117*BD117","v":40.312094145189683},null,null,null,{"$f":"'DNSP Inputs O & M'!$F$67*(1+'DNSP Inputs O & M'!$F$11)","v":2.6244852959107865},{"$f":"'DNSP Inputs O & M'!$F$75","v":11.52},null,{"$f":"BJ117*BK117","v":30.23407060889226},null,null,null,null,null,{"$f":"'DNSP Inputs O & M'!$G$67","v":2.4995098056293203},{"$f":"'DNSP Inputs O & M'!$G$73","v":19.2},null,{"$f":"BS117*BT117","v":47.990588268082952},null,null,null,{"$f":"'DNSP Inputs O & M'!$G$67*(1+'DNSP Inputs O & M'!$G$11)","v":2.6244852959107865},{"$f":"'DNSP Inputs O & M'!$G$74","v":15.36},null,{"$f":"BZ117*CA117","v":40.312094145189683},null,null,null,{"$f":"'DNSP Inputs O & M'!$G$67*(1+'DNSP Inputs O & M'!$G$11)","v":2.6244852959107865},{"$f":"'DNSP Inputs O & M'!$G$75","v":11.52},null,{"$f":"CG117*CH117","v":30.23407060889226},null,null,null,null,null,{"$f":"'DNSP Inputs O & M'!$H$67","v":2.4995098056293203},{"$f":"'DNSP Inputs O & M'!$H$73","v":19.2},null,{"$f":"CP117*CQ117","v":47.990588268082952},null,null,null,{"$f":"'DNSP Inputs O & M'!$H$67*(1+'DNSP Inputs O & M'!$H$11)","v":2.6244852959107865},{"$f":"'DNSP Inputs O & M'!$H$74","v":15.36},null,{"$f":"CW117*CX117","v":40.312094145189683},null,null,null,{"$f":"'DNSP Inputs O & M'!$H$67*(1+'DNSP Inputs O & M'!$H$11)","v":2.6244852959107865},{"$f":"'DNSP Inputs O & M'!$H$75","v":11.52},null,{"$f":"DD117*DE117","v":30.23407060889226}]
["Labour - Patrol"]
["Crew costs",{"$f":"'DNSP Inputs O & M'!$D$13","v":119.78},{"$f":"'DNSP Inputs O & M'!$D$68","v":2},{"$f":"'DNSP Inputs O & M'!$D$17","v":8},{"$f":"B119*C119*D119","v":1916.48},{"$f":"(E119+E120)/'DNSP Inputs O & M'!$D$70","v":0.72170666666666661},{"$f":"F119*'DNSP Inputs O & M'!$D$62","v":2.1651199999999999},null,{"$f":"'DNSP Inputs O & M'!$D$13","v":119.78},{"$f":"'DNSP Inputs O & M'!$D$68","v":2},{"$f":"'DNSP Inputs O & M'!$D$17","v":8},{"$f":"I119*J119*K119","v":1916.48},{"$f":"(L119+L120)/'DNSP Inputs O & M'!$D$71","v":1.08256},{"$f":"M119*'DNSP Inputs O & M'!$D$62","v":3.2476799999999999},null,{"$f":"'DNSP Inputs O & M'!$D$13","v":119.78},{"$f":"'DNSP Inputs O & M'!$D$68","v":2},{"$f":"'DNSP Inputs O & M'!$D$17","v":8},{"$f":"P119*Q119*R119","v":1916.48},{"$f":"(S119+S120)/'DNSP Inputs O & M'!$D$72","v":2.1651199999999999},{"$f":"T119*'DNSP Inputs O & M'!$D$62","v":6.4953599999999998},null,null,null,{"$f":"'DNSP Inputs O & M'!$E$13","v":120.223186},{"$f":"'DNSP Inputs O & M'!$E$68","v":2},{"$f":"'DNSP Inputs O & M'!$E$17","v":8},{"$f":"Y119*Z119*AA119","v":1923.570976},{"$f":"(AB119+AB120)/'DNSP Inputs O & M'!$E$70","v":0.72407032533333326},{"$f":"AC119*'DNSP Inputs O & M'!$E$62","v":2.1722109759999997},null,{"$f":"'DNSP Inputs O & M'!$E$13","v":120.223186},{"$f":"'DNSP Inputs O & M'!$E$68","v":2},{"$f":"'DNSP Inputs O & M'!$E$17","v":8},{"$f":"AF119*AG119*AH119","v":1923.570976},{"$f":"(AI119+AI120)/'DNSP Inputs O & M'!$E$71","v":1.0861054879999998},{"$f":"AJ119*'DNSP Inputs O & M'!$E$62","v":3.2583164639999995},null,{"$f":"'DNSP Inputs O & M'!$E$13","v":120.223186},{"$f":"'DNSP Inputs O & M'!$E$68","v":2},{"$f":"'DNSP Inputs O & M'!$E$17","v":8},{"$f":"AM119*AN119*AO119","v":1923.570976},{"$f":"(AP119+AP120)/'DNSP Inputs O & M'!$E$72","v":2.1722109759999997},{"$f":"AQ119*'DNSP Inputs O & M'!$E$62","v":6.516632927999999},null,null,null,{"$f":"'DNSP Inputs O & M'!$F$13","v":121.1729491694},{"$f":"'DNSP Inputs O & M'!$F$68","v":2},{"$f":"'DNSP Inputs O & M'!$F$17","v":8},{"$f":"AV119*AW119*AX119","v":1938.7671867104},{"$f":"(AY119+AY120)/'DNSP Inputs O & M'!$F$70","v":0.72913572890346667},{"$f":"AZ119*'DNSP Inputs O & M'!$F$62","v":2.1874071867103999},null,{"$f":"'DNSP Inputs O & M'!$F$13","v":121.1729491694},{"$f":"'DNSP Inputs O & M'!$F$68","v":2},{"$f":"'DNSP Inputs O & M'!$F$17","v":8},{"$f":"BC119*BD119*BE119","v":1938.7671867104},{"$f":"(BF119+BF120)/'DNSP Inputs O & M'!$F$71","v":1.0937035933552},{"$f":"BG119*'DNSP Inputs O & M'!$F$62","v":3.2811107800655996},null,{"$f":"'DNSP Inputs O & M'!$F$13","v":121.1729491694},{"$f":"'DNSP Inputs O & M'!$F$68","v":2},{"$f":"'DNSP Inputs O & M'!$F$17","v":8},{"$f":"BJ119*BK119*BL119","v":1938.7671867104},{"$f":"(BM119+BM120)/'DNSP Inputs O & M'!$F$72","v":2.1874071867103999},{"$f":"BN119*'DNSP Inputs O & M'!$F$62","v":6.5622215601311993},null,null,null,{"$f":"'DNSP Inputs O & M'!$G$13","v":122.33620948142624},{"$f":"'DNSP Inputs O & M'!$G$68","v":2},{"$f":"'DNSP Inputs O & M'!$G$17","v":8},{"$f":"BS119*BT119*BU119","v":1957.3793517028198},{"$f":"(BV119+BV120)/'DNSP Inputs O & M'!$G$70","v":0.7353397839009399},{"$f":"BW119*'DNSP Inputs O & M'!$G$62","v":2.2060193517028197},null,{"$f":"'DNSP Inputs O & M'!$G$13","v":122.33620948142624},{"$f":"'DNSP Inputs O & M'!$G$68","v":2},{"$f":"'DNSP Inputs O & M'!$G$17","v":8},{"$f":"BZ119*CA119*CB119","v":1957.3793517028198},{"$f":"(CC119+CC120)/'DNSP Inputs O & M'!$G$71","v":1.1030096758514099},{"$f":"CD119*'DNSP Inputs O & M'!$G$62","v":3.3090290275542298},null,{"$f":"'DNSP Inputs O & M'!$G$13","v":122.33620948142624},{"$f":"'DNSP Inputs O & M'!$G$68","v":2},{"$f":"'DNSP Inputs O & M'!$G$17","v":8},{"$f":"CG119*CH119*CI119","v":1957.3793517028198},{"$f":"(CJ119+CJ120)/'DNSP Inputs O & M'!$G$72","v":2.2060193517028197},{"$f":"CK119*'DNSP Inputs O & M'!$G$62","v":6.6180580551084596},null,null,null,{"$f":"'DNSP Inputs O & M'!$H$13","v":123.58403881813679},{"$f":"'DNSP Inputs O & M'!$H$68","v":2},{"$f":"'DNSP Inputs O & M'!$H$17","v":8},{"$f":"CP119*CQ119*CR119","v":1977.3446210901886},{"$f":"(CS119+CS120)/'DNSP Inputs O & M'!$H$70","v":0.74199487369672956},{"$f":"CT119*'DNSP Inputs O & M'!$H$62","v":2.2259846210901886},null,{"$f":"'DNSP Inputs O & M'!$H$13","v":123.58403881813679},{"$f":"'DNSP Inputs O & M'!$H$68","v":2},{"$f":"'DNSP Inputs O & M'!$H$17","v":8},{"$f":"CW119*CX119*CY119","v":1977.3446210901886},{"$f":"(CZ119+CZ120)/'DNSP Inputs O & M'!$H$71","v":1.1129923105450943},{"$f":"DA119*'DNSP Inputs O & M'!$H$62","v":3.3389769316352829},null,{"$f":"'DNSP Inputs O & M'!$H$13","v":123.58403881813679},{"$f":"'DNSP Inputs O & M'!$H$68","v":2},{"$f":"'DNSP Inputs O & M'!$H$17","v":8},{"$f":"DD119*DE119*DF119","v":1977.3446210901886},{"$f":"(DG119+DG120)/'DNSP Inputs O & M'!$H$72","v":2.2259846210901886},{"$f":"DH119*'DNSP Inputs O & M'!$H$62","v":6.6779538632705657}]
["Vehicle costs",{"$f":"'DNSP Inputs O & M'!$D$16","v":31.08},1,{"$f":"'DNSP Inputs O & M'!$D$17","v":8},{"$f":"B120*C120*D120","v":248.64},null,null,null,{"$f":"'DNSP Inputs O & M'!$D$16","v":31.08},1,{"$f":"'DNSP Inputs O & M'!$D$17","v":8},{"$f":"I120*J120*K120","v":248.64},null,null,null,{"$f":"'DNSP Inputs O & M'!$D$16","v":31.08},1,{"$f":"'DNSP Inputs O & M'!$D$17","v":8},{"$f":"P120*Q120*R120","v":248.64},null,null,null,null,null,{"$f":"'DNSP Inputs O & M'!$E$16","v":31.08},1,{"$f":"'DNSP Inputs O & M'!$E$17","v":8},{"$f":"Y120*Z120*AA120","v":248.64},null,null,null,{"$f":"'DNSP Inputs O & M'!$E$16","v":31.08},1,{"$f":"'DNSP Inputs O & M'!$E$17","v":8},{"$f":"AF120*AG120*AH120","v":248.64},null,null,null,{"$f":"'DNSP Inputs O & M'!$E$16","v":31.08},1,{"$f":"'DNSP Inputs O & M'!$E$17","v":8},{"$f":"AM120*AN120*AO120","v":248.64},null,null,null,null,null,{"$f":"'DNSP Inputs O & M'!$F$16","v":31.08},1,{"$f":"'DNSP Inputs O & M'!$F$17","v":8},{"$f":"AV120*AW120*AX120","v":248.64},null,null,null,{"$f":"'DNSP Inputs O & M'!$F$16","v":31.08},1,{"$f":"'DNSP Inputs O & M'!$F$17","v":8},{"$f":"BC120*BD120*BE120","v":248.64},null,null,null,{"$f":"'DNSP Inputs O & M'!$F$16","v":31.08},1,{"$f":"'DNSP Inputs O & M'!$F$17","v":8},{"$f":"BJ120*BK120*BL120","v":248.64},null,null,null,null,null,{"$f":"'DNSP Inputs O & M'!$G$16","v":31.08},1,{"$f":"'DNSP Inputs O & M'!$G$17","v":8},{"$f":"BS120*BT120*BU120","v":248.64},null,null,null,{"$f":"'DNSP Inputs O & M'!$G$16","v":31.08},1,{"$f":"'DNSP Inputs O & M'!$G$17","v":8},{"$f":"BZ120*CA120*CB120","v":248.64},null,null,null,{"$f":"'DNSP Inputs O & M'!$G$16","v":31.08},1,{"$f":"'DNSP Inputs O & M'!$G$17","v":8},{"$f":"CG120*CH120*CI120","v":248.64},null,null,null,null,null,{"$f":"'DNSP Inputs O & M'!$H$16","v":31.08},1,{"$f":"'DNSP Inputs O & M'!$H$17","v":8},{"$f":"CP120*CQ120*CR120","v":248.64},null,null,null,{"$f":"'DNSP Inputs O & M'!$H$16","v":31.08},1,{"$f":"'DNSP Inputs O & M'!$H$17","v":8},{"$f":"CW120*CX120*CY120","v":248.64},null,null,null,{"$f":"'DNSP Inputs O & M'!$H$16","v":31.08},1,{"$f":"'DNSP Inputs O & M'!$H$17","v":8},{"$f":"DD120*DE120*DF120","v":248.64}]
["Labour - Repair of faults"]
["Crew costs",{"$f":"'DNSP Inputs O & M'!$D$12","v":100},{"$f":"'DNSP Inputs O & M'!$D$69","v":2},{"$f":"'DNSP Inputs O & M'!$D$17","v":8},{"$f":"B122*C122*D122","v":1600},{"$f":"(E122+E123)/'DNSP Inputs O & M'!$D$73*(C115+C116)/C115","v":160.97090970653053},{"$f":"F122/'DNSP Inputs O & M'!$D$63","v":32.194181941306105},null,{"$f":"'DNSP Inputs O & M'!$D$12","v":100},{"$f":"'DNSP Inputs O & M'!$D$69","v":2},{"$f":"'DNSP Inputs O & M'!$D$17","v":8},{"$f":"I122*J122*K122","v":1600},{"$f":"(L122+L123)/'DNSP Inputs O & M'!$D$74*(J115+J116)/J115","v":201.21363713316322},{"$f":"M122/'DNSP Inputs O & M'!$D$63","v":40.242727426632641},null,{"$f":"'DNSP Inputs O & M'!$D$12","v":100},{"$f":"'DNSP Inputs O & M'!$D$69","v":2},{"$f":"'DNSP Inputs O & M'!$D$17","v":8},{"$f":"P122*Q122*R122","v":1600},{"$f":"(S122+S123)/'DNSP Inputs O & M'!$D$75*(Q115+Q116)/Q115","v":268.28484951088433},{"$f":"T122/'DNSP Inputs O & M'!$D$63","v":53.656969902176868},null,null,null,{"$f":"'DNSP Inputs O & M'!$E$12","v":100.37},{"$f":"'DNSP Inputs O & M'!$E$69","v":2},{"$f":"'DNSP Inputs O & M'!$E$17","v":8},{"$f":"Y122*Z122*AA122","v":1605.92},{"$f":"(AB122+AB123)/'DNSP Inputs O & M'!$E$73*(Z115+Z116)/Z115","v":162.20822169923457},{"$f":"AC122/'DNSP Inputs O & M'!$E$63","v":32.441644339846917},null,{"$f":"'DNSP Inputs O & M'!$E$12","v":100.37},{"$f":"'DNSP Inputs O & M'!$E$69","v":2},{"$f":"'DNSP Inputs O & M'!$E$17","v":8},{"$f":"AF122*AG122*AH122","v":1605.92},{"$f":"(AI122+AI123)/'DNSP Inputs O & M'!$E$74*(AG115+AG116)/AG115","v":202.76027712404323},{"$f":"AJ122/'DNSP Inputs O & M'!$E$63","v":40.552055424808643},null,{"$f":"'DNSP Inputs O & M'!$E$12","v":100.37},{"$f":"'DNSP Inputs O & M'!$E$69","v":2},{"$f":"'DNSP Inputs O & M'!$E$17","v":8},{"$f":"AM122*AN122*AO122","v":1605.92},{"$f":"(AP122+AP123)/'DNSP Inputs O & M'!$E$75*(AN115+AN116)/AN115","v":270.34703616539105},{"$f":"AQ122/'DNSP Inputs O & M'!$E$63","v":54.069407233078209},null,null,null,{"$f":"'DNSP Inputs O & M'!$F$12","v":101.16292300000001},{"$f":"'DNSP Inputs O & M'!$F$69","v":2},{"$f":"'DNSP Inputs O & M'!$F$17","v":8},{"$f":"AV122*AW122*AX122","v":1618.6067680000001},{"$f":"(AY122+AY123)/'DNSP Inputs O & M'!$F$73*(AW115+AW116)/AW115","v":163.83687432471842},{"$f":"AZ122/'DNSP Inputs O & M'!$F$63","v":32.767374864943683},null,{"$f":"'DNSP Inputs O & M'!$F$12","v":101.16292300000001},{"$f":"'DNSP Inputs O & M'!$F$69","v":2},{"$f":"'DNSP Inputs O & M'!$F$17","v":8},{"$f":"BC122*BD122*BE122","v":1618.6067680000001},{"$f":"(BF122+BF123)/'DNSP Inputs O & M'!$F$74*(BD115+BD116)/BD115","v":204.79609290589801},{"$f":"BG122/'DNSP Inputs O & M'!$F$63","v":40.959218581179599},null,{"$f":"'DNSP Inputs O & M'!$F$12","v":101.16292300000001},{"$f":"'DNSP Inputs O & M'!$F$69","v":2},{"$f":"'DNSP Inputs O & M'!$F$17","v":8},{"$f":"BJ122*BK122*BL122","v":1618.6067680000001},{"$f":"(BM122+BM123)/'DNSP Inputs O & M'!$F$75*(BK115+BK116)/BK115","v":273.06145720786407},{"$f":"BN122/'DNSP Inputs O & M'!$F$63","v":54.612291441572815},null,null,null,{"$f":"'DNSP Inputs O & M'!$G$12","v":102.13408706080001},{"$f":"'DNSP Inputs O & M'!$G$69","v":2},{"$f":"'DNSP Inputs O & M'!$G$17","v":8},{"$f":"BS122*BT122*BU122","v":1634.1453929728002},{"$f":"(BV122+BV123)/'DNSP Inputs O & M'!$G$73*(BT115+BT116)/BT115","v":165.69210102071361},{"$f":"BW122/'DNSP Inputs O & M'!$G$63","v":33.138420204142719},null,{"$f":"'DNSP Inputs O & M'!$G$12","v":102.13408706080001},{"$f":"'DNSP Inputs O & M'!$G$69","v":2},{"$f":"'DNSP Inputs O & M'!$G$17","v":8},{"$f":"BZ122*CA122*CB122","v":1634.1453929728002},{"$f":"(CC122+CC123)/'DNSP Inputs O & M'!$G$74*(CA115+CA116)/CA115","v":207.11512627589201},{"$f":"CD122/'DNSP Inputs O & M'!$G$63","v":41.423025255178402},null,{"$f":"'DNSP Inputs O & M'!$G$12","v":102.13408706080001},{"$f":"'DNSP Inputs O & M'!$G$69","v":2},{"$f":"'DNSP Inputs O & M'!$G$17","v":8},{"$f":"CG122*CH122*CI122","v":1634.1453929728002},{"$f":"(CJ122+CJ123)/'DNSP Inputs O & M'!$G$75*(CH115+CH116)/CH115","v":276.15350170118933},{"$f":"CK122/'DNSP Inputs O & M'!$G$63","v":55.230700340237867},null,null,null,{"$f":"'DNSP Inputs O & M'!$H$12","v":103.17585474882017},{"$f":"'DNSP Inputs O & M'!$H$69","v":2},{"$f":"'DNSP Inputs O & M'!$H$17","v":8},{"$f":"CP122*CQ122*CR122","v":1650.8136759811227},{"$f":"(CS122+CS123)/'DNSP Inputs O & M'!$H$73*(CQ115+CQ116)/CQ115","v":167.65770089417481},{"$f":"CT122/'DNSP Inputs O & M'!$H$63","v":33.531540178834959},null,{"$f":"'DNSP Inputs O & M'!$H$12","v":103.17585474882017},{"$f":"'DNSP Inputs O & M'!$H$69","v":2},{"$f":"'DNSP Inputs O & M'!$H$17","v":8},{"$f":"CW122*CX122*CY122","v":1650.8136759811227},{"$f":"(CZ122+CZ123)/'DNSP Inputs O & M'!$H$74*(CX115+CX116)/CX115","v":209.57212611771851},{"$f":"DA122/'DNSP Inputs O & M'!$H$63","v":41.914425223543702},null,{"$f":"'DNSP Inputs O & M'!$H$12","v":103.17585474882017},{"$f":"'DNSP Inputs O & M'!$H$69","v":2},{"$f":"'DNSP Inputs O & M'!$H$17","v":8},{"$f":"DD122*DE122*DF122","v":1650.8136759811227},{"$f":"(DG122+DG123)/'DNSP Inputs O & M'!$H$75*(DE115+DE116)/DE115","v":279.42950149029139},{"$f":"DH122/'DNSP Inputs O & M'!$H$63","v":55.885900298058274}]
["Elevated platform vehicle costs",{"$f":"'DNSP Inputs O & M'!$D$15","v":57.553455530448915},1,{"$f":"'DNSP Inputs O & M'!$D$17","v":8},{"$f":"B123*C123*D123","v":460.42764424359132},null,null,null,{"$f":"'DNSP Inputs O & M'!$D$15","v":57.553455530448915},1,{"$f":"'DNSP Inputs O & M'!$D$17","v":8},{"$f":"I123*J123*K123","v":460.42764424359132},null,null,null,{"$f":"'DNSP Inputs O & M'!$D$15","v":57.553455530448915},1,{"$f":"'DNSP Inputs O & M'!$D$17","v":8},{"$f":"P123*Q123*R123","v":460.42764424359132},null,null,null,null,null,{"$f":"'DNSP Inputs O & M'!$E$15","v":58.793154718775355},1,{"$f":"'DNSP Inputs O & M'!$E$17","v":8},{"$f":"Y123*Z123*AA123","v":470.34523775020284},null,null,null,{"$f":"'DNSP Inputs O & M'!$E$15","v":58.793154718775355},1,{"$f":"'DNSP Inputs O & M'!$E$17","v":8},{"$f":"AF123*AG123*AH123","v":470.34523775020284},null,null,null,{"$f":"'DNSP Inputs O & M'!$E$15","v":58.793154718775355},1,{"$f":"'DNSP Inputs O & M'!$E$17","v":8},{"$f":"AM123*AN123*AO123","v":470.34523775020284},null,null,null,null,null,{"$f":"'DNSP Inputs O & M'!$F$15","v":59.813152919549431},1,{"$f":"'DNSP Inputs O & M'!$F$17","v":8},{"$f":"AV123*AW123*AX123","v":478.50522335639545},null,null,null,{"$f":"'DNSP Inputs O & M'!$F$15","v":59.813152919549431},1,{"$f":"'DNSP Inputs O & M'!$F$17","v":8},{"$f":"BC123*BD123*BE123","v":478.50522335639545},null,null,null,{"$f":"'DNSP Inputs O & M'!$F$15","v":59.813152919549431},1,{"$f":"'DNSP Inputs O & M'!$F$17","v":8},{"$f":"BJ123*BK123*BL123","v":478.50522335639545},null,null,null,null,null,{"$f":"'DNSP Inputs O & M'!$G$15","v":60.839187511541702},1,{"$f":"'DNSP Inputs O & M'!$G$17","v":8},{"$f":"BS123*BT123*BU123","v":486.71350009233362},null,null,null,{"$f":"'DNSP Inputs O & M'!$G$15","v":60.839187511541702},1,{"$f":"'DNSP Inputs O & M'!$G$17","v":8},{"$f":"BZ123*CA123*CB123","v":486.71350009233362},null,null,null,{"$f":"'DNSP Inputs O & M'!$G$15","v":60.839187511541702},1,{"$f":"'DNSP Inputs O & M'!$G$17","v":8},{"$f":"CG123*CH123*CI123","v":486.71350009233362},null,null,null,null,null,{"$f":"'DNSP Inputs O & M'!$H$15","v":61.900611933039357},1,{"$f":"'DNSP Inputs O & M'!$H$17","v":8},{"$f":"CP123*CQ123*CR123","v":495.20489546431486},null,null,null,{"$f":"'DNSP Inputs O & M'!$H$15","v":61.900611933039357},1,{"$f":"'DNSP Inputs O & M'!$H$17","v":8},{"$f":"CW123*CX123*CY123","v":495.20489546431486},null,null,null,{"$f":"'DNSP Inputs O & M'!$H$15","v":61.900611933039357},1,{"$f":"'DNSP Inputs O & M'!$H$17","v":8},{"$f":"DD123*DE123*DF123","v":495.20489546431486}]
[]
["Other Maintenance and Repair costs",null,null,null,null,null,{"$f":"'DNSP Inputs O & M'!$D$82","v":2.1281770086517935},null,null,null,null,null,null,{"$f":"'DNSP Inputs O & M'!$D$82","v":2.1281770086517935},null,null,null,null,null,null,{"$f":"'DNSP Inputs O & M'!$D$82","v":2.1281770086517935},null,null,null,null,null,null,null,null,{"$f":"'DNSP Inputs O & M'!$E$82","v":2.1005480964142307},null,null,null,null,null,null,{"$f":"'DNSP Inputs O & M'!$E$82","v":2.1005480964142307},null,null,null,null,null,null,{"$f":"'DNSP Inputs O & M'!$E$82","v":2.1005480964142307},null,null,null,null,null,null,null,null,{"$f":"'DNSP Inputs O & M'!$F$82","v":2.1117536908469452},null,null,null,null,null,null,{"$f":"'DNSP Inputs O & M'!$F$82","v":2.1117536908469452},null,null,null,null,null,null,{"$f":"'DNSP Inputs O & M'!$F$82","v":2.1117536908469452},null,null,null,null,null,null,null,null,{"$f":"'DNSP Inputs O & M'!$G$82","v":2.1132331562289988},null,null,null,null,null,null,{"$f":"'DNSP Inputs O & M'!$G$82","v":2.1132331562289988},null,null,null,null,null,null,{"$f":"'DNSP Inputs O & M'!$G$82","v":2.1132331562289988},null,null,null,null,null,null,null,null,{"$f":"'DNSP Inputs O & M'!$H$82","v":2.1063530961049093},null,null,null,null,null,null,{"$f":"'DNSP Inputs O & M'!$H$82","v":2.1063530961049093},null,null,null,null,null,null,{"$f":"'DNSP Inputs O & M'!$H$82","v":2.1063530961049093}]
[]
["Overheads",{"$f":"'DNSP Inputs O & M'!$D$18","v":0.25},null,null,null,null,{"$f":"B127*(G115+G119+G122+G125)","v":11.872892717310245},null,{"$f":"'DNSP Inputs O & M'!$D$18","v":0.25},null,null,null,null,{"$f":"I127*(N115+N119+N122+N125)","v":14.293220237632918},null,{"$f":"'DNSP Inputs O & M'!$D$18","v":0.25},null,null,null,null,{"$f":"P127*(U115+U119+U122+U125)","v":18.458700856518973},null,null,null,{"$f":"'DNSP Inputs O & M'!$E$18","v":0.25},null,null,null,null,{"$f":"Y127*(AD115+AD119+AD122+AD125)","v":11.929623832886058},null,{"$f":"'DNSP Inputs O & M'!$E$18","v":0.25},null,null,null,null,{"$f":"AF127*(AK115+AK119+AK122+AK125)","v":14.366304125117527},null,{"$f":"'DNSP Inputs O & M'!$E$18","v":0.25},null,null,null,null,{"$f":"AM127*(AR115+AR119+AR122+AR125)","v":18.560221193184919},null,null,null,{"$f":"'DNSP Inputs O & M'!$F$18","v":0.25},null,null,null,null,{"$f":"AV127*(BA115+BA119+BA122+BA125)","v":12.017656915446027},null,{"$f":"'DNSP Inputs O & M'!$F$18","v":0.25},null,null,null,null,{"$f":"BC127*(BH115+BH119+BH122+BH125)","v":14.476594891834845},null,{"$f":"'DNSP Inputs O & M'!$F$18","v":0.25},null,null,null,null,{"$f":"BJ127*(BO115+BO119+BO122+BO125)","v":18.710140801949549},null,null,null,{"$f":"'DNSP Inputs O & M'!$G$18","v":0.25},null,null,null,null,{"$f":"BS127*(BX115+BX119+BX122+BX125)","v":12.115441157839406},null,{"$f":"'DNSP Inputs O & M'!$G$18","v":0.25},null,null,null,null,{"$f":"BZ127*(CE115+CE119+CE122+CE125)","v":14.599895988552216},null,{"$f":"'DNSP Inputs O & M'!$G$18","v":0.25},null,null,null,null,{"$f":"CG127*(CL115+CL119+CL122+CL125)","v":18.879072016705642},null,null,null,{"$f":"'DNSP Inputs O & M'!$H$18","v":0.25},null,null,null,null,{"$f":"CP127*(CU115+CU119+CU122+CU125)","v":12.216992453828286},null,{"$f":"'DNSP Inputs O & M'!$H$18","v":0.25},null,null,null,null,{"$f":"CW127*(DB115+DB119+DB122+DB125)","v":14.728512941632783},null,{"$f":"'DNSP Inputs O & M'!$H$18","v":0.25},null,null,null,null,{"$f":"DD127*(DI115+DI119+DI122+DI125)","v":19.056125943170247}]
[]
[null,null,null,null,null,null,{"$f":"SUM(G115,G119,G122,G125,G127)","v":59.364463586551224},null,null,null,null,null,null,{"$f":"SUM(N115,N119,N122,N125,N127)","v":71.466101188164586},null,null,null,null,null,null,{"$f":"SUM(U115,U119,U122,U125,U127)","v":92.293504282594867},null,null,null,null,null,null,null,null,{"$f":"SUM(AD115,AD119,AD122,AD125,AD127)","v":59.648119164430291},null,null,null,null,null,null,{"$f":"SUM(AK115,AK119,AK122,AK125,AK127)","v":71.831520625587629},null,null,null,null,null,null,{"$f":"SUM(AR115,AR119,AR122,AR125,AR127)","v":92.801105965924592},null,null,null,null,null,null,null,null,{"$f":"SUM(BA115,BA119,BA122,BA125,BA127)","v":60.088284577230134},null,null,null,null,null,null,{"$f":"SUM(BH115,BH119,BH122,BH125,BH127)","v":72.382974459174221},null,null,null,null,null,null,{"$f":"SUM(BO115,BO119,BO122,BO125,BO127)","v":93.550704009747747},null,null,null,null,null,null,null,null,{"$f":"SUM(BX115,BX119,BX122,BX125,BX127)","v":60.577205789197031},null,null,null,null,null,null,{"$f":"SUM(CE115,CE119,CE122,CE125,CE127)","v":72.999479942761084},null,null,null,null,null,null,{"$f":"SUM(CL115,CL119,CL122,CL125,CL127)","v":94.395360083528203},null,null,null,null,null,null,null,null,{"$f":"SUM(CU115,CU119,CU122,CU125,CU127)","v":61.084962269141428},null,null,null,null,null,null,{"$f":"SUM(DB115,DB119,DB122,DB125,DB127)","v":73.642564708163917},null,null,null,null,null,null,{"$f":"SUM(DI115,DI119,DI122,DI125,DI127)","v":95.280629715851234}]
[]
[]
[]
[]
["Sodium High Pressure 250 Watt Standard Light Type - Cost build-up"]
[]
["Additional assumptions"]
["Overheads are applied to material and labour components"]
["All costs and charges are exclusive of GST"]
[]
[null,"Urban",null,null,null,null,null,null,"Rural",null,null,null,null,null,null,"Remote",null,null,null,null,null,null,null,null,"Urban",null,null,null,null,null,null,"Rural",null,null,null,null,null,null,"Remote",null,null,null,null,null,null,null,null,"Urban",null,null,null,null,null,null,"Rural",null,null,null,null,null,null,"Remote",null,null,null,null,null,null,null,null,"Urban",null,null,null,null,null,null,"Rural",null,null,null,null,null,null,"Remote",null,null,null,null,null,null,null,null,"Urban",null,null,null,null,null,null,"Rural",null,null,null,null,null,null,"Remote"]
[]
[null,"Unit rate","Number","Hours","Cost","Annualised","Annualised",null,"Unit rate","Number","Hours","Cost","Annualised","Annualised",null,"Unit rate","Number","Hours","Cost","Annualised","Annualised",null,null,null,"Unit rate","Number","Hours","Cost","Annualised","Annualised",null,"Unit rate","Number","Hours","Cost","Annualised","Annualised",null,"Unit rate","Number","Hours","Cost","Annualised","Annualised",null,null,null,"Unit rate","Number","Hours","Cost","Annualised","Annualised",null,"Unit rate","Number","Hours","Cost","Annualised","Annualised",null,"Unit rate","Number","Hours","Cost","Annualised","Annualised",null,null,null,"Unit rate","Number","Hours","Cost","Annualised","Annualised",null,"Unit rate","Number","Hours","Cost","Annualised","Annualised",null,"Unit rate","Number","Hours","Cost","Annualised","Annualised",null,null,null,"Unit rate","Number","Hours","Cost","Annualised","Annualised",null,"Unit rate","Number","Hours","Cost","Annualised","Annualised",null,"Unit rate","Number","Hours","Cost","Annualised","Annualised"]
[null,null,null,null,null," cost","unit cost",null,null,null,null,null," cost","unit cost",null,null,null,null,null," cost","unit cost",null,null,null,null,null,null,null," cost","unit cost",null,null,null,null,null," cost","unit cost",null,null,null,null,null," cost","unit cost",null,null,null,null,null,null,null," cost","unit cost",null,null,null,null,null," cost","unit cost",null,null,null,null,null," cost","unit cost",null,null,null,null,null,null,null," cost","unit cost",null,null,null,null,null," cost","unit cost",null,null,null,null,null," cost","unit cost",null,null,null,null,null,null,null," cost","unit cost",null,null,null,null,null," cost","unit cost",null,null,null,null,null," cost","unit cost"]
["S-HP 250"]
["Patrols and repairs"]
["Materials"]
["Lamp",{"$f":"'DNSP Inputs O & M'!$D$97","v":41.304399538024512},{"$f":"'DNSP Inputs O & M'!$D$105","v":19.2},null,{"$f":"B147*C147","v":793.04447113007063},{"$f":"(E147+E148+E149)/'DNSP Inputs O & M'!$D$105","v":55.020459596415414},{"$f":"F147/'DNSP Inputs O & M'!$D$95","v":11.004091919283082},null,{"$f":"'DNSP Inputs O & M'!$D$97*(1+'DNSP Inputs O & M'!$D$11)","v":43.369619514925738},{"$f":"'DNSP Inputs O & M'!$D$106","v":15.36},null,{"$f":"I147*J147","v":666.1573557492593},{"$f":"(L147+L148+L149)/'DNSP Inputs O & M'!$D$106","v":57.771482576236181},{"$f":"M147/'DNSP Inputs O & M'!$D$95","v":11.554296515247236},null,{"$f":"'DNSP Inputs O & M'!$D$97*(1+'DNSP Inputs O & M'!$D$11)","v":43.369619514925738},{"$f":"'DNSP Inputs O & M'!$D$107","v":11.52},null,{"$f":"P147*Q147","v":499.61801681194447},{"$f":"(S147+S148+S149)/'DNSP Inputs O & M'!$D$107","v":57.771482576236181},{"$f":"T147/'DNSP Inputs O & M'!$D$95","v":11.554296515247236},null,null,null,{"$f":"'DNSP Inputs O & M'!$E$97","v":41.304399538024512},{"$f":"'DNSP Inputs O & M'!$E$105","v":19.2},null,{"$f":"Y147*Z147","v":793.04447113007063},{"$f":"(AB147+AB148+AB149)/'DNSP Inputs O & M'!$E$105","v":55.020459596415414},{"$f":"AC147/'DNSP Inputs O & M'!$E$95","v":11.004091919283082},null,{"$f":"'DNSP Inputs O & M'!$E$97*(1+'DNSP Inputs O & M'!$E$11)","v":43.369619514925738},{"$f":"'DNSP Inputs O & M'!$E$106","v":15.36},null,{"$f":"AF147*AG147","v":666.1573557492593},{"$f":"(AI147+AI148+AI149)/'DNSP Inputs O & M'!$E$106","v":57.771482576236181},{"$f":"AJ147/'DNSP Inputs O & M'!$E$95","v":11.554296515247236},null,{"$f":"'DNSP Inputs O & M'!$E$97*(1+'DNSP Inputs O & M'!$E$11)","v":43.369619514925738},{"$f":"'DNSP Inputs O & M'!$E$107","v":11.52},null,{"$f":"AM147*AN147","v":499.61801681194447},{"$f":"(AP147+AP148+AP149)/'DNSP Inputs O & M'!$E$107","v":57.771482576236181},{"$f":"AQ147/'DNSP Inputs O & M'!$E$95","v":11.554296515247236},null,null,null,{"$f":"'DNSP Inputs O & M'!$F$97","v":41.304399538024512},{"$f":"'DNSP Inputs O & M'!$F$105","v":19.2},null,{"$f":"AV147*AW147","v":793.04447113007063},{"$f":"(AY147+AY148+AY149)/'DNSP Inputs O & M'!$F$105","v":55.020459596415414},{"$f":"AZ147/'DNSP Inputs O & M'!$F$95","v":11.004091919283082},null,{"$f":"'DNSP Inputs O & M'!$F$97*(1+'DNSP Inputs O & M'!$F$11)","v":43.369619514925738},{"$f":"'DNSP Inputs O & M'!$F$106","v":15.36},null,{"$f":"BC147*BD147","v":666.1573557492593},{"$f":"(BF147+BF148+BF149)/'DNSP Inputs O & M'!$F$106","v":57.771482576236181},{"$f":"BG147/'DNSP Inputs O & M'!$F$95","v":11.554296515247236},null,{"$f":"'DNSP Inputs O & M'!$F$97*(1+'DNSP Inputs O & M'!$F$11)","v":43.369619514925738},{"$f":"'DNSP Inputs O & M'!$F$107","v":11.52},null,{"$f":"BJ147*BK147","v":499.61801681194447},{"$f":"(BM147+BM148+BM149)/'DNSP Inputs O & M'!$F$107","v":57.771482576236181},{"$f":"BN147/'DNSP Inputs O & M'!$F$95","v":11.554296515247236},null,null,null,{"$f":"'DNSP Inputs O & M'!$G$97","v":41.304399538024512},{"$f":"'DNSP Inputs O & M'!$G$105","v":19.2},null,{"$f":"BS147*BT147","v":793.04447113007063},{"$f":"(BV147+BV148+BV149)/'DNSP Inputs O & M'!$G$105","v":55.020459596415414},{"$f":"BW147/'DNSP Inputs O & M'!$G$95","v":11.004091919283082},null,{"$f":"'DNSP Inputs O & M'!$G$97*(1+'DNSP Inputs O & M'!$G$11)","v":43.369619514925738},{"$f":"'DNSP Inputs O & M'!$G$106","v":15.36},null,{"$f":"BZ147*CA147","v":666.1573557492593},{"$f":"(CC147+CC148+CC149)/'DNSP Inputs O & M'!$G$106","v":57.771482576236181},{"$f":"CD147/'DNSP Inputs O & M'!$G$95","v":11.554296515247236},null,{"$f":"'DNSP Inputs O & M'!$G$97*(1+'DNSP Inputs O & M'!$G$11)","v":43.369619514925738},{"$f":"'DNSP Inputs O & M'!$G$107","v":11.52},null,{"$f":"CG147*CH147","v":499.61801681194447},{"$f":"(CJ147+CJ148+CJ149)/'DNSP Inputs O & M'!$G$107","v":57.771482576236181},{"$f":"CK147/'DNSP Inputs O & M'!$G$95","v":11.554296515247236},null,null,null,{"$f":"'DNSP Inputs O & M'!$H$97","v":41.304399538024512},{"$f":"'DNSP Inputs O & M'!$H$105","v":19.2},null,{"$f":"CP147*CQ147","v":793.04447113007063},{"$f":"(CS147+CS148+CS149)/'DNSP Inputs O & M'!$H$105","v":55.020459596415414},{"$f":"CT147/'DNSP Inputs O & M'!$H$95","v":11.004091919283082},null,{"$f":"'DNSP Inputs O & M'!$H$97*(1+'DNSP Inputs O & M'!$H$11)","v":43.369619514925738},{"$f":"'DNSP Inputs O & M'!$H$106","v":15.36},null,{"$f":"CW147*CX147","v":666.1573557492593},{"$f":"(CZ147+CZ148+CZ149)/'DNSP Inputs O & M'!$H$106","v":57.771482576236181},{"$f":"DA147/'DNSP Inputs O & M'!$H$95","v":11.554296515247236},null,{"$f":"'DNSP Inputs O & M'!$H$97*(1+'DNSP Inputs O & M'!$H$11)","v":43.369619514925738},{"$f":"'DNSP Inputs O & M'!$H$107","v":11.52},null,{"$f":"DD147*DE147","v":499.61801681194447},{"$f":"(DG147+DG148+DG149)/'DNSP Inputs O & M'!$H$107","v":57.771482576236181},{"$f":"DH147/'DNSP Inputs O & M'!$H$95","v":11.554296515247236}]
["PE cell",{"$f":"'DNSP Inputs O & M'!$D$98","v":22.43310050552315},{"$f":"C147*'DNSP Inputs O & M'!$D$95/'DNSP Inputs O & M'!$D$96","v":9.6},null,{"$f":"B148*C148","v":215.35776485302225},null,null,null,{"$f":"'DNSP Inputs O & M'!$D$98*(1+'DNSP Inputs O & M'!$D$11)","v":23.554755530799309},{"$f":"J147*'DNSP Inputs O & M'!$D$95/'DNSP Inputs O & M'!$D$96","v":7.68},null,{"$f":"I148*J148","v":180.9005224765387},null,null,null,{"$f":"'DNSP Inputs O & M'!$D$98*(1+'DNSP Inputs O & M'!$D$11)","v":23.554755530799309},{"$f":"Q147*'DNSP Inputs O & M'!$D$95/'DNSP Inputs O & M'!$D$96","v":5.76},null,{"$f":"P148*Q148","v":135.67539185740401},null,null,null,null,null,{"$f":"'DNSP Inputs O & M'!$E$98","v":22.43310050552315},{"$f":"Z147*'DNSP Inputs O & M'!$E$95/'DNSP Inputs O & M'!$E$96","v":9.6},null,{"$f":"Y148*Z148","v":215.35776485302225},null,null,null,{"$f":"'DNSP Inputs O & M'!$E$98*(1+'DNSP Inputs O & M'!$E$11)","v":23.554755530799309},{"$f":"AG147*'DNSP Inputs O & M'!$E$95/'DNSP Inputs O & M'!$E$96","v":7.68},null,{"$f":"AF148*AG148","v":180.9005224765387},null,null,null,{"$f":"'DNSP Inputs O & M'!$E$98*(1+'DNSP Inputs O & M'!$E$11)","v":23.554755530799309},{"$f":"AN147*'DNSP Inputs O & M'!$E$95/'DNSP Inputs O & M'!$E$96","v":5.76},null,{"$f":"AM148*AN148","v":135.67539185740401},null,null,null,null,null,{"$f":"'DNSP Inputs O & M'!$F$98","v":22.43310050552315},{"$f":"AW147*'DNSP Inputs O & M'!$F$95/'DNSP Inputs O & M'!$F$96","v":9.6},null,{"$f":"AV148*AW148","v":215.35776485302225},null,null,null,{"$f":"'DNSP Inputs O & M'!$F$98*(1+'DNSP Inputs O & M'!$F$11)","v":23.554755530799309},{"$f":"BD147*'DNSP Inputs O & M'!$F$95/'DNSP Inputs O & M'!$F$96","v":7.68},null,{"$f":"BC148*BD148","v":180.9005224765387},null,null,null,{"$f":"'DNSP Inputs O & M'!$F$98*(1+'DNSP Inputs O & M'!$F$11)","v":23.554755530799309},{"$f":"BK147*'DNSP Inputs O & M'!$F$95/'DNSP Inputs O & M'!$F$96","v":5.76},null,{"$f":"BJ148*BK148","v":135.67539185740401},null,null,null,null,null,{"$f":"'DNSP Inputs O & M'!$G$98","v":22.43310050552315},{"$f":"BT147*'DNSP Inputs O & M'!$G$95/'DNSP Inputs O & M'!$G$96","v":9.6},null,{"$f":"BS148*BT148","v":215.35776485302225},null,null,null,{"$f":"'DNSP Inputs O & M'!$G$98*(1+'DNSP Inputs O & M'!$G$11)","v":23.554755530799309},{"$f":"CA147*'DNSP Inputs O & M'!$G$95/'DNSP Inputs O & M'!$G$96","v":7.68},null,{"$f":"BZ148*CA148","v":180.9005224765387},null,null,null,{"$f":"'DNSP Inputs O & M'!$G$98*(1+'DNSP Inputs O & M'!$G$11)","v":23.554755530799309},{"$f":"CH147*'DNSP Inputs O & M'!$G$95/'DNSP Inputs O & M'!$G$96","v":5.76},null,{"$f":"CG148*CH148","v":135.67539185740401},null,null,null,null,null,{"$f":"'DNSP Inputs O & M'!$H$98","v":22.43310050552315},{"$f":"CQ147*'DNSP Inputs O & M'!$H$95/'DNSP Inputs O & M'!$H$96","v":9.6},null,{"$f":"CP148*CQ148","v":215.35776485302225},null,null,null,{"$f":"'DNSP Inputs O & M'!$H$98*(1+'DNSP Inputs O & M'!$H$11)","v":23.554755530799309},{"$f":"CX147*'DNSP Inputs O & M'!$H$95/'DNSP Inputs O & M'!$H$96","v":7.68},null,{"$f":"CW148*CX148","v":180.9005224765387},null,null,null,{"$f":"'DNSP Inputs O & M'!$H$98*(1+'DNSP Inputs O & M'!$H$11)","v":23.554755530799309},{"$f":"DE147*'DNSP Inputs O & M'!$H$95/'DNSP Inputs O & M'!$H$96","v":5.76},null,{"$f":"DD148*DE148","v":135.67539185740401}]
["Miscellaneous",{"$f":"'DNSP Inputs O & M'!$D$99","v":2.4995098056293203},{"$f":"'DNSP Inputs O & M'!$D$105","v":19.2},null,{"$f":"B149*C149","v":47.990588268082952},null,null,null,{"$f":"'DNSP Inputs O & M'!$D$99*(1+'DNSP Inputs O & M'!$D$11)","v":2.6244852959107865},{"$f":"'DNSP Inputs O & M'!$D$106","v":15.36},null,{"$f":"I149*J149","v":40.312094145189683},null,null,null,{"$f":"'DNSP Inputs O & M'!$D$99*(1+'DNSP Inputs O & M'!$D$11)","v":2.6244852959107865},{"$f":"'DNSP Inputs O & M'!$D$107","v":11.52},null,{"$f":"P149*Q149","v":30.23407060889226},null,null,null,null,null,{"$f":"'DNSP Inputs O & M'!$E$99","v":2.4995098056293203},{"$f":"'DNSP Inputs O & M'!$E$105","v":19.2},null,{"$f":"Y149*Z149","v":47.990588268082952},null,null,null,{"$f":"'DNSP Inputs O & M'!$E$99*(1+'DNSP Inputs O & M'!$E$11)","v":2.6244852959107865},{"$f":"'DNSP Inputs O & M'!$E$106","v":15.36},null,{"$f":"AF149*AG149","v":40.312094145189683},null,null,null,{"$f":"'DNSP Inputs O & M'!$E$99*(1+'DNSP Inputs O & M'!$E$11)","v":2.6244852959107865},{"$f":"'DNSP Inputs O & M'!$E$107","v":11.52},null,{"$f":"AM149*AN149","v":30.23407060889226},null,null,null,null,null,{"$f":"'DNSP Inputs O & M'!$F$99","v":2.4995098056293203},{"$f":"'DNSP Inputs O & M'!$F$105","v":19.2},null,{"$f":"AV149*AW149","v":47.990588268082952},null,null,null,{"$f":"'DNSP Inputs O & M'!$F$99*(1+'DNSP Inputs O & M'!$F$11)","v":2.6244852959107865},{"$f":"'DNSP Inputs O & M'!$F$106","v":15.36},null,{"$f":"BC149*BD149","v":40.312094145189683},null,null,null,{"$f":"'DNSP Inputs O & M'!$F$99*(1+'DNSP Inputs O & M'!$F$11)","v":2.6244852959107865},{"$f":"'DNSP Inputs O & M'!$F$107","v":11.52},null,{"$f":"BJ149*BK149","v":30.23407060889226},null,null,null,null,null,{"$f":"'DNSP Inputs O & M'!$G$99","v":2.4995098056293203},{"$f":"'DNSP Inputs O & M'!$G$105","v":19.2},null,{"$f":"BS149*BT149","v":47.990588268082952},null,null,null,{"$f":"'DNSP Inputs O & M'!$G$99*(1+'DNSP Inputs O & M'!$G$11)","v":2.6244852959107865},{"$f":"'DNSP Inputs O & M'!$G$106","v":15.36},null,{"$f":"BZ149*CA149","v":40.312094145189683},null,null,null,{"$f":"'DNSP Inputs O & M'!$G$99*(1+'DNSP Inputs O & M'!$G$11)","v":2.6244852959107865},{"$f":"'DNSP Inputs O & M'!$G$107","v":11.52},null,{"$f":"CG149*CH149","v":30.23407060889226},null,null,null,null,null,{"$f":"'DNSP Inputs O & M'!$H$99","v":2.4995098056293203},{"$f":"'DNSP Inputs O & M'!$H$105","v":19.2},null,{"$f":"CP149*CQ149","v":47.990588268082952},null,null,null,{"$f":"'DNSP Inputs O & M'!$H$99*(1+'DNSP Inputs O & M'!$H$11)","v":2.6244852959107865},{"$f":"'DNSP Inputs O & M'!$H$106","v":15.36},null,{"$f":"CW149*CX149","v":40.312094145189683},null,null,null,{"$f":"'DNSP Inputs O & M'!$H$99*(1+'DNSP Inputs O & M'!$H$11)","v":2.6244852959107865},{"$f":"'DNSP Inputs O & M'!$H$107","v":11.52},null,{"$f":"DD149*DE149","v":30.23407060889226}]
["Labour - Patrol"]
["Crew costs",{"$f":"'DNSP Inputs O & M'!$D$13","v":119.78},{"$f":"'DNSP Inputs O & M'!$D$100","v":2},{"$f":"'DNSP Inputs O & M'!$D$17","v":8},{"$f":"B151*C151*D151","v":1916.48},{"$f":"(E151+E152)/'DNSP Inputs O & M'!$D$102","v":0.72170666666666661},{"$f":"F151*'DNSP Inputs O & M'!$D$94","v":2.1651199999999999},null,{"$f":"'DNSP Inputs O & M'!$D$13","v":119.78},{"$f":"'DNSP Inputs O & M'!$D$100","v":2},{"$f":"'DNSP Inputs O & M'!$D$17","v":8},{"$f":"I151*J151*K151","v":1916.48},{"$f":"(L151+L152)/'DNSP Inputs O & M'!$D$103","v":1.08256},{"$f":"M151*'DNSP Inputs O & M'!$D$94","v":3.2476799999999999},null,{"$f":"'DNSP Inputs O & M'!$D$13","v":119.78},{"$f":"'DNSP Inputs O & M'!$D$100","v":2},{"$f":"'DNSP Inputs O & M'!$D$17","v":8},{"$f":"P151*Q151*R151","v":1916.48},{"$f":"(S151+S152)/'DNSP Inputs O & M'!$D$104","v":2.1651199999999999},{"$f":"T151*'DNSP Inputs O & M'!$D$94","v":6.4953599999999998},null,null,null,{"$f":"'DNSP Inputs O & M'!$E$13","v":120.223186},{"$f":"'DNSP Inputs O & M'!$E$100","v":2},{"$f":"'DNSP Inputs O & M'!$E$17","v":8},{"$f":"Y151*Z151*AA151","v":1923.570976},{"$f":"(AB151+AB152)/'DNSP Inputs O & M'!$E$102","v":0.72407032533333326},{"$f":"AC151*'DNSP Inputs O & M'!$E$94","v":2.1722109759999997},null,{"$f":"'DNSP Inputs O & M'!$E$13","v":120.223186},{"$f":"'DNSP Inputs O & M'!$E$100","v":2},{"$f":"'DNSP Inputs O & M'!$E$17","v":8},{"$f":"AF151*AG151*AH151","v":1923.570976},{"$f":"(AI151+AI152)/'DNSP Inputs O & M'!$E$103","v":1.0861054879999998},{"$f":"AJ151*'DNSP Inputs O & M'!$E$94","v":3.2583164639999995},null,{"$f":"'DNSP Inputs O & M'!$E$13","v":120.223186},{"$f":"'DNSP Inputs O & M'!$E$100","v":2},{"$f":"'DNSP Inputs O & M'!$E$17","v":8},{"$f":"AM151*AN151*AO151","v":1923.570976},{"$f":"(AP151+AP152)/'DNSP Inputs O & M'!$E$104","v":2.1722109759999997},{"$f":"AQ151*'DNSP Inputs O & M'!$E$94","v":6.516632927999999},null,null,null,{"$f":"'DNSP Inputs O & M'!$F$13","v":121.1729491694},{"$f":"'DNSP Inputs O & M'!$F$100","v":2},{"$f":"'DNSP Inputs O & M'!$F$17","v":8},{"$f":"AV151*AW151*AX151","v":1938.7671867104},{"$f":"(AY151+AY152)/'DNSP Inputs O & M'!$F$102","v":0.72913572890346667},{"$f":"AZ151*'DNSP Inputs O & M'!$F$94","v":2.1874071867103999},null,{"$f":"'DNSP Inputs O & M'!$F$13","v":121.1729491694},{"$f":"'DNSP Inputs O & M'!$F$100","v":2},{"$f":"'DNSP Inputs O & M'!$F$17","v":8},{"$f":"BC151*BD151*BE151","v":1938.7671867104},{"$f":"(BF151+BF152)/'DNSP Inputs O & M'!$F$103","v":1.0937035933552},{"$f":"BG151*'DNSP Inputs O & M'!$F$94","v":3.2811107800655996},null,{"$f":"'DNSP Inputs O & M'!$F$13","v":121.1729491694},{"$f":"'DNSP Inputs O & M'!$F$100","v":2},{"$f":"'DNSP Inputs O & M'!$F$17","v":8},{"$f":"BJ151*BK151*BL151","v":1938.7671867104},{"$f":"(BM151+BM152)/'DNSP Inputs O & M'!$F$104","v":2.1874071867103999},{"$f":"BN151*'DNSP Inputs O & M'!$F$94","v":6.5622215601311993},null,null,null,{"$f":"'DNSP Inputs O & M'!$G$13","v":122.33620948142624},{"$f":"'DNSP Inputs O & M'!$G$100","v":2},{"$f":"'DNSP Inputs O & M'!$G$17","v":8},{"$f":"BS151*BT151*BU151","v":1957.3793517028198},{"$f":"(BV151+BV152)/'DNSP Inputs O & M'!$G$102","v":0.7353397839009399},{"$f":"BW151*'DNSP Inputs O & M'!$G$94","v":2.2060193517028197},null,{"$f":"'DNSP Inputs O & M'!$G$13","v":122.33620948142624},{"$f":"'DNSP Inputs O & M'!$G$100","v":2},{"$f":"'DNSP Inputs O & M'!$G$17","v":8},{"$f":"BZ151*CA151*CB151","v":1957.3793517028198},{"$f":"(CC151+CC152)/'DNSP Inputs O & M'!$G$103","v":1.1030096758514099},{"$f":"CD151*'DNSP Inputs O & M'!$G$94","v":3.3090290275542298},null,{"$f":"'DNSP Inputs O & M'!$G$13","v":122.33620948142624},{"$f":"'DNSP Inputs O & M'!$G$100","v":2},{"$f":"'DNSP Inputs O & M'!$G$17","v":8},{"$f":"CG151*CH151*CI151","v":1957.3793517028198},{"$f":"(CJ151+CJ152)/'DNSP Inputs O & M'!$G$104","v":2.2060193517028197},{"$f":"CK151*'DNSP Inputs O & M'!$G$94","v":6.6180580551084596},null,null,null,{"$f":"'DNSP Inputs O & M'!$H$13","v":123.58403881813679},{"$f":"'DNSP Inputs O & M'!$H$100","v":2},{"$f":"'DNSP Inputs O & M'!$H$17","v":8},{"$f":"CP151*CQ151*CR151","v":1977.3446210901886},{"$f":"(CS151+CS152)/'DNSP Inputs O & M'!$H$102","v":0.74199487369672956},{"$f":"CT151*'DNSP Inputs O & M'!$H$94","v":2.2259846210901886},null,{"$f":"'DNSP Inputs O & M'!$H$13","v":123.58403881813679},{"$f":"'DNSP Inputs O & M'!$H$100","v":2},{"$f":"'DNSP Inputs O & M'!$H$17","v":8},{"$f":"CW151*CX151*CY151","v":1977.3446210901886},{"$f":"(CZ151+CZ152)/'DNSP Inputs O & M'!$H$103","v":1.1129923105450943},{"$f":"DA151*'DNSP Inputs O & M'!$H$94","v":3.3389769316352829},null,{"$f":"'DNSP Inputs O & M'!$H$13","v":123.58403881813679},{"$f":"'DNSP Inputs O & M'!$H$100","v":2},{"$f":"'DNSP Inputs O & M'!$H$17","v":8},{"$f":"DD151*DE151*DF151","v":1977.3446210901886},{"$f":"(DG151+DG152)/'DNSP Inputs O & M'!$H$104","v":2.2259846210901886},{"$f":"DH151*'DNSP Inputs O & M'!$H$94","v":6.6779538632705657}]
["Vehicle costs",{"$f":"'DNSP Inputs O & M'!$D$16","v":31.08},1,{"$f":"'DNSP Inputs O & M'!$D$17","v":8},{"$f":"B152*C152*D152","v":248.64},null,null,null,{"$f":"'DNSP Inputs O & M'!$D$16","v":31.08},1,{"$f":"'DNSP Inputs O & M'!$D$17","v":8},{"$f":"I152*J152*K152","v":248.64},null,null,null,{"$f":"'DNSP Inputs O & M'!$D$16","v":31.08},1,{"$f":"'DNSP Inputs O & M'!$D$17","v":8},{"$f":"P152*Q152*R152","v":248.64},null,null,null,null,null,{"$f":"'DNSP Inputs O & M'!$E$16","v":31.08},1,{"$f":"'DNSP Inputs O & M'!$E$17","v":8},{"$f":"Y152*Z152*AA152","v":248.64},null,null,null,{"$f":"'DNSP Inputs O & M'!$E$16","v":31.08},1,{"$f":"'DNSP Inputs O & M'!$E$17","v":8},{"$f":"AF152*AG152*AH152","v":248.64},null,null,null,{"$f":"'DNSP Inputs O & M'!$E$16","v":31.08},1,{"$f":"'DNSP Inputs O & M'!$E$17","v":8},{"$f":"AM152*AN152*AO152","v":248.64},null,null,null,null,null,{"$f":"'DNSP Inputs O & M'!$F$16","v":31.08},1,{"$f":"'DNSP Inputs O & M'!$F$17","v":8},{"$f":"AV152*AW152*AX152","v":248.64},null,null,null,{"$f":"'DNSP Inputs O & M'!$F$16","v":31.08},1,{"$f":"'DNSP Inputs O & M'!$F$17","v":8},{"$f":"BC152*BD152*BE152","v":248.64},null,null,null,{"$f":"'DNSP Inputs O & M'!$F$16","v":31.08},1,{"$f":"'DNSP Inputs O & M'!$F$17","v":8},{"$f":"BJ152*BK152*BL152","v":248.64},null,null,null,null,null,{"$f":"'DNSP Inputs O & M'!$G$16","v":31.08},1,{"$f":"'DNSP Inputs O & M'!$G$17","v":8},{"$f":"BS152*BT152*BU152","v":248.64},null,null,null,{"$f":"'DNSP Inputs O & M'!$G$16","v":31.08},1,{"$f":"'DNSP Inputs O & M'!$G$17","v":8},{"$f":"BZ152*CA152*CB152","v":248.64},null,null,null,{"$f":"'DNSP Inputs O & M'!$G$16","v":31.08},1,{"$f":"'DNSP Inputs O & M'!$G$17","v":8},{"$f":"CG152*CH152*CI152","v":248.64},null,null,null,null,null,{"$f":"'DNSP Inputs O & M'!$H$16","v":31.08},1,{"$f":"'DNSP Inputs O & M'!$H$17","v":8},{"$f":"CP152*CQ152*CR152","v":248.64},null,null,null,{"$f":"'DNSP Inputs O & M'!$H$16","v":31.08},1,{"$f":"'DNSP Inputs O & M'!$H$17","v":8},{"$f":"CW152*CX152*CY152","v":248.64},null,null,null,{"$f":"'DNSP Inputs O & M'!$H$16","v":31.08},1,{"$f":"'DNSP Inputs O & M'!$H$17","v":8},{"$f":"DD152*DE152*DF152","v":248.64}]
["Labour - Repair of faults"]
["Crew costs",{"$f":"'DNSP Inputs O & M'!$D$12","v":100},{"$f":"'DNSP Inputs O & M'!$D$101","v":2},{"$f":"'DNSP Inputs O & M'!$D$17","v":8},{"$f":"B154*C154*D154","v":1600},{"$f":"(E154+E155)/'DNSP Inputs O & M'!$D$105*(C147+C148)/C147","v":160.97090970653053},{"$f":"F154/'DNSP Inputs O & M'!$D$95","v":32.194181941306105},null,{"$f":"'DNSP Inputs O & M'!$D$12","v":100},{"$f":"'DNSP Inputs O & M'!$D$101","v":2},{"$f":"'DNSP Inputs O & M'!$D$17","v":8},{"$f":"I154*J154*K154","v":1600},{"$f":"(L154+L155)/'DNSP Inputs O & M'!$D$106*(J147+J148)/J147","v":201.21363713316322},{"$f":"M154/'DNSP Inputs O & M'!$D$95","v":40.242727426632641},null,{"$f":"'DNSP Inputs O & M'!$D$12","v":100},{"$f":"'DNSP Inputs O & M'!$D$101","v":2},{"$f":"'DNSP Inputs O & M'!$D$17","v":8},{"$f":"P154*Q154*R154","v":1600},{"$f":"(S154+S155)/'DNSP Inputs O & M'!$D$107*(Q147+Q148)/Q147","v":268.28484951088433},{"$f":"T154/'DNSP Inputs O & M'!$D$95","v":53.656969902176868},null,null,null,{"$f":"'DNSP Inputs O & M'!$E$12","v":100.37},{"$f":"'DNSP Inputs O & M'!$E$101","v":2},{"$f":"'DNSP Inputs O & M'!$E$17","v":8},{"$f":"Y154*Z154*AA154","v":1605.92},{"$f":"(AB154+AB155)/'DNSP Inputs O & M'!$E$105*(Z147+Z148)/Z147","v":162.20822169923457},{"$f":"AC154/'DNSP Inputs O & M'!$E$95","v":32.441644339846917},null,{"$f":"'DNSP Inputs O & M'!$E$12","v":100.37},{"$f":"'DNSP Inputs O & M'!$E$101","v":2},{"$f":"'DNSP Inputs O & M'!$E$17","v":8},{"$f":"AF154*AG154*AH154","v":1605.92},{"$f":"(AI154+AI155)/'DNSP Inputs O & M'!$E$106*(AG147+AG148)/AG147","v":202.76027712404323},{"$f":"AJ154/'DNSP Inputs O & M'!$E$95","v":40.552055424808643},null,{"$f":"'DNSP Inputs O & M'!$E$12","v":100.37},{"$f":"'DNSP Inputs O & M'!$E$101","v":2},{"$f":"'DNSP Inputs O & M'!$E$17","v":8},{"$f":"AM154*AN154*AO154","v":1605.92},{"$f":"(AP154+AP155)/'DNSP Inputs O & M'!$E$107*(AN147+AN148)/AN147","v":270.34703616539105},{"$f":"AQ154/'DNSP Inputs O & M'!$E$95","v":54.069407233078209},null,null,null,{"$f":"'DNSP Inputs O & M'!$F$12","v":101.16292300000001},{"$f":"'DNSP Inputs O & M'!$F$101","v":2},{"$f":"'DNSP Inputs O & M'!$F$17","v":8},{"$f":"AV154*AW154*AX154","v":1618.6067680000001},{"$f":"(AY154+AY155)/'DNSP Inputs O & M'!$F$105*(AW147+AW148)/AW147","v":163.83687432471842},{"$f":"AZ154/'DNSP Inputs O & M'!$F$95","v":32.767374864943683},null,{"$f":"'DNSP Inputs O & M'!$F$12","v":101.16292300000001},{"$f":"'DNSP Inputs O & M'!$F$101","v":2},{"$f":"'DNSP Inputs O & M'!$F$17","v":8},{"$f":"BC154*BD154*BE154","v":1618.6067680000001},{"$f":"(BF154+BF155)/'DNSP Inputs O & M'!$F$106*(BD147+BD148)/BD147","v":204.79609290589801},{"$f":"BG154/'DNSP Inputs O & M'!$F$95","v":40.959218581179599},null,{"$f":"'DNSP Inputs O & M'!$F$12","v":101.16292300000001},{"$f":"'DNSP Inputs O & M'!$F$101","v":2},{"$f":"'DNSP Inputs O & M'!$F$17","v":8},{"$f":"BJ154*BK154*BL154","v":1618.6067680000001},{"$f":"(BM154+BM155)/'DNSP Inputs O & M'!$F$107*(BK147+BK148)/BK147","v":273.06145720786407},{"$f":"BN154/'DNSP Inputs O & M'!$F$95","v":54.612291441572815},null,null,null,{"$f":"'DNSP Inputs O & M'!$G$12","v":102.13408706080001},{"$f":"'DNSP Inputs O & M'!$G$101","v":2},{"$f":"'DNSP Inputs O & M'!$G$17","v":8},{"$f":"BS154*BT154*BU154","v":1634.1453929728002},{"$f":"(BV154+BV155)/'DNSP Inputs O & M'!$G$105*(BT147+BT148)/BT147","v":165.69210102071361},{"$f":"BW154/'DNSP Inputs O & M'!$G$95","v":33.138420204142719},null,{"$f":"'DNSP Inputs O & M'!$G$12","v":102.13408706080001},{"$f":"'DNSP Inputs O & M'!$G$101","v":2},{"$f":"'DNSP Inputs O & M'!$G$17","v":8},{"$f":"BZ154*CA154*CB154","v":1634.1453929728002},{"$f":"(CC154+CC155)/'DNSP Inputs O & M'!$G$106*(CA147+CA148)/CA147","v":207.11512627589201},{"$f":"CD154/'DNSP Inputs O & M'!$G$95","v":41.423025255178402},null,{"$f":"'DNSP Inputs O & M'!$G$12","v":102.13408706080001},{"$f":"'DNSP Inputs O & M'!$G$101","v":2},{"$f":"'DNSP Inputs O & M'!$G$17","v":8},{"$f":"CG154*CH154*CI154","v":1634.1453929728002},{"$f":"(CJ154+CJ155)/'DNSP Inputs O & M'!$G$107*(CH147+CH148)/CH147","v":276.15350170118933},{"$f":"CK154/'DNSP Inputs O & M'!$G$95","v":55.230700340237867},null,null,null,{"$f":"'DNSP Inputs O & M'!$H$12","v":103.17585474882017},{"$f":"'DNSP Inputs O & M'!$H$101","v":2},{"$f":"'DNSP Inputs O & M'!$H$17","v":8},{"$f":"CP154*CQ154*CR154","v":1650.8136759811227},{"$f":"(CS154+CS155)/'DNSP Inputs O & M'!$H$105*(CQ147+CQ148)/CQ147","v":167.65770089417481},{"$f":"CT154/'DNSP Inputs O & M'!$H$95","v":33.531540178834959},null,{"$f":"'DNSP Inputs O & M'!$H$12","v":103.17585474882017},{"$f":"'DNSP Inputs O & M'!$H$101","v":2},{"$f":"'DNSP Inputs O & M'!$H$17","v":8},{"$f":"CW154*CX154*CY154","v":1650.8136759811227},{"$f":"(CZ154+CZ155)/'DNSP Inputs O & M'!$H$106*(CX147+CX148)/CX147","v":209.57212611771851},{"$f":"DA154/'DNSP Inputs O & M'!$H$95","v":41.914425223543702},null,{"$f":"'DNSP Inputs O & M'!$H$12","v":103.17585474882017},{"$f":"'DNSP Inputs O & M'!$H$101","v":2},{"$f":"'DNSP Inputs O & M'!$H$17","v":8},{"$f":"DD154*DE154*DF154","v":1650.8136759811227},{"$f":"(DG154+DG155)/'DNSP Inputs O & M'!$H$107*(DE147+DE148)/DE147","v":279.42950149029139},{"$f":"DH154/'DNSP Inputs O & M'!$H$95","v":55.885900298058274}]
["Elevated platform vehicle costs",{"$f":"'DNSP Inputs O & M'!$D$15","v":57.553455530448915},1,{"$f":"'DNSP Inputs O & M'!$D$17","v":8},{"$f":"B155*C155*D155","v":460.42764424359132},null,null,null,{"$f":"'DNSP Inputs O & M'!$D$15","v":57.553455530448915},1,{"$f":"'DNSP Inputs O & M'!$D$17","v":8},{"$f":"I155*J155*K155","v":460.42764424359132},null,null,null,{"$f":"'DNSP Inputs O & M'!$D$15","v":57.553455530448915},1,{"$f":"'DNSP Inputs O & M'!$D$17","v":8},{"$f":"P155*Q155*R155","v":460.42764424359132},null,null,null,null,null,{"$f":"'DNSP Inputs O & M'!$E$15","v":58.793154718775355},1,{"$f":"'DNSP Inputs O & M'!$E$17","v":8},{"$f":"Y155*Z155*AA155","v":470.34523775020284},null,null,null,{"$f":"'DNSP Inputs O & M'!$E$15","v":58.793154718775355},1,{"$f":"'DNSP Inputs O & M'!$E$17","v":8},{"$f":"AF155*AG155*AH155","v":470.34523775020284},null,null,null,{"$f":"'DNSP Inputs O & M'!$E$15","v":58.793154718775355},1,{"$f":"'DNSP Inputs O & M'!$E$17","v":8},{"$f":"AM155*AN155*AO155","v":470.34523775020284},null,null,null,null,null,{"$f":"'DNSP Inputs O & M'!$F$15","v":59.813152919549431},1,{"$f":"'DNSP Inputs O & M'!$F$17","v":8},{"$f":"AV155*AW155*AX155","v":478.50522335639545},null,null,null,{"$f":"'DNSP Inputs O & M'!$F$15","v":59.813152919549431},1,{"$f":"'DNSP Inputs O & M'!$F$17","v":8},{"$f":"BC155*BD155*BE155","v":478.50522335639545},null,null,null,{"$f":"'DNSP Inputs O & M'!$F$15","v":59.813152919549431},1,{"$f":"'DNSP Inputs O & M'!$F$17","v":8},{"$f":"BJ155*BK155*BL155","v":478.50522335639545},null,null,null,null,null,{"$f":"'DNSP Inputs O & M'!$G$15","v":60.839187511541702},1,{"$f":"'DNSP Inputs O & M'!$G$17","v":8},{"$f":"BS155*BT155*BU155","v":486.71350009233362},null,null,null,{"$f":"'DNSP Inputs O & M'!$G$15","v":60.839187511541702},1,{"$f":"'DNSP Inputs O & M'!$G$17","v":8},{"$f":"BZ155*CA155*CB155","v":486.71350009233362},null,null,null,{"$f":"'DNSP Inputs O & M'!$G$15","v":60.839187511541702},1,{"$f":"'DNSP Inputs O & M'!$G$17","v":8},{"$f":"CG155*CH155*CI155","v":486.71350009233362},null,null,null,null,null,{"$f":"'DNSP Inputs O & M'!$H$15","v":61.900611933039357},1,{"$f":"'DNSP Inputs O & M'!$H$17","v":8},{"$f":"CP155*CQ155*CR155","v":495.20489546431486},null,null,null,{"$f":"'DNSP Inputs O & M'!$H$15","v":61.900611933039357},1,{"$f":"'DNSP Inputs O & M'!$H$17","v":8},{"$f":"CW155*CX155*CY155","v":495.20489546431486},null,null,null,{"$f":"'DNSP Inputs O & M'!$H$15","v":61.900611933039357},1,{"$f":"'DNSP Inputs O & M'!$H$17","v":8},{"$f":"DD155*DE155*DF155","v":495.20489546431486}]
[]
["Other Maintenance and Repair costs",null,null,null,null,null,{"$f":"'DNSP Inputs O & M'!$D$114","v":2.1077956034473329},null,null,null,null,null,null,{"$f":"'DNSP Inputs O & M'!$D$114","v":2.1077956034473329},null,null,null,null,null,null,{"$f":"'DNSP Inputs O & M'!$D$114","v":2.1077956034473329},null,null,null,null,null,null,null,null,{"$f":"'DNSP Inputs O & M'!$E$114","v":2.0804312914067382},null,null,null,null,null,null,{"$f":"'DNSP Inputs O & M'!$E$114","v":2.0804312914067382},null,null,null,null,null,null,{"$f":"'DNSP Inputs O & M'!$E$114","v":2.0804312914067382},null,null,null,null,null,null,null,null,{"$f":"'DNSP Inputs O & M'!$F$114","v":2.0915295706303505},null,null,null,null,null,null,{"$f":"'DNSP Inputs O & M'!$F$114","v":2.0915295706303505},null,null,null,null,null,null,{"$f":"'DNSP Inputs O & M'!$F$114","v":2.0915295706303505},null,null,null,null,null,null,null,null,{"$f":"'DNSP Inputs O & M'!$G$114","v":2.092994867273942},null,null,null,null,null,null,{"$f":"'DNSP Inputs O & M'!$G$114","v":2.092994867273942},null,null,null,null,null,null,{"$f":"'DNSP Inputs O & M'!$G$114","v":2.092994867273942},null,null,null,null,null,null,null,null,{"$f":"'DNSP Inputs O & M'!$H$114","v":2.0861806970136412},null,null,null,null,null,null,{"$f":"'DNSP Inputs O & M'!$H$114","v":2.0861806970136412},null,null,null,null,null,null,{"$f":"'DNSP Inputs O & M'!$H$114","v":2.0861806970136412}]
[]
["Overheads",{"$f":"'DNSP Inputs O & M'!$D$18","v":0.25},null,null,null,null,{"$f":"B159*(G147+G151+G154+G157)","v":11.86779736600913},null,{"$f":"'DNSP Inputs O & M'!$D$18","v":0.25},null,null,null,null,{"$f":"I159*(N147+N151+N154+N157)","v":14.288124886331802},null,{"$f":"'DNSP Inputs O & M'!$D$18","v":0.25},null,null,null,null,{"$f":"P159*(U147+U151+U154+U157)","v":18.453605505217858},null,null,null,{"$f":"'DNSP Inputs O & M'!$E$18","v":0.25},null,null,null,null,{"$f":"Y159*(AD147+AD151+AD154+AD157)","v":11.924594631634186},null,{"$f":"'DNSP Inputs O & M'!$E$18","v":0.25},null,null,null,null,{"$f":"AF159*(AK147+AK151+AK154+AK157)","v":14.361274923865654},null,{"$f":"'DNSP Inputs O & M'!$E$18","v":0.25},null,null,null,null,{"$f":"AM159*(AR147+AR151+AR154+AR157)","v":18.555191991933047},null,null,null,{"$f":"'DNSP Inputs O & M'!$F$18","v":0.25},null,null,null,null,{"$f":"AV159*(BA147+BA151+BA154+BA157)","v":12.012600885391878},null,{"$f":"'DNSP Inputs O & M'!$F$18","v":0.25},null,null,null,null,{"$f":"BC159*(BH147+BH151+BH154+BH157)","v":14.471538861780695},null,{"$f":"'DNSP Inputs O & M'!$F$18","v":0.25},null,null,null,null,{"$f":"BJ159*(BO147+BO151+BO154+BO157)","v":18.705084771895404},null,null,null,{"$f":"'DNSP Inputs O & M'!$G$18","v":0.25},null,null,null,null,{"$f":"BS159*(BX147+BX151+BX154+BX157)","v":12.110381585600642},null,{"$f":"'DNSP Inputs O & M'!$G$18","v":0.25},null,null,null,null,{"$f":"BZ159*(CE147+CE151+CE154+CE157)","v":14.594836416313452},null,{"$f":"'DNSP Inputs O & M'!$G$18","v":0.25},null,null,null,null,{"$f":"CG159*(CL147+CL151+CL154+CL157)","v":18.874012444466878},null,null,null,{"$f":"'DNSP Inputs O & M'!$H$18","v":0.25},null,null,null,null,{"$f":"CP159*(CU147+CU151+CU154+CU157)","v":12.211949354055468},null,{"$f":"'DNSP Inputs O & M'!$H$18","v":0.25},null,null,null,null,{"$f":"CW159*(DB147+DB151+DB154+DB157)","v":14.723469841859965},null,{"$f":"'DNSP Inputs O & M'!$H$18","v":0.25},null,null,null,null,{"$f":"DD159*(DI147+DI151+DI154+DI157)","v":19.051082843397431}]
[]
[null,null,null,null,null,null,{"$f":"SUM(G147,G151,G154,G157,G159)","v":59.338986830045648},null,null,null,null,null,null,{"$f":"SUM(N147,N151,N154,N157,N159)","v":71.440624431659018},null,null,null,null,null,null,{"$f":"SUM(U147,U151,U154,U157,U159)","v":92.268027526089298},null,null,null,null,null,null,null,null,{"$f":"SUM(AD147,AD151,AD154,AD157,AD159)","v":59.622973158170929},null,null,null,null,null,null,{"$f":"SUM(AK147,AK151,AK154,AK157,AK159)","v":71.806374619328267},null,null,null,null,null,null,{"$f":"SUM(AR147,AR151,AR154,AR157,AR159)","v":92.775959959665229},null,null,null,null,null,null,null,null,{"$f":"SUM(BA147,BA151,BA154,BA157,BA159)","v":60.063004426959388},null,null,null,null,null,null,{"$f":"SUM(BH147,BH151,BH154,BH157,BH159)","v":72.357694308903476},null,null,null,null,null,null,{"$f":"SUM(BO147,BO151,BO154,BO157,BO159)","v":93.525423859477016},null,null,null,null,null,null,null,null,{"$f":"SUM(BX147,BX151,BX154,BX157,BX159)","v":60.55190792800321},null,null,null,null,null,null,{"$f":"SUM(CE147,CE151,CE154,CE157,CE159)","v":72.974182081567264},null,null,null,null,null,null,{"$f":"SUM(CL147,CL151,CL154,CL157,CL159)","v":94.370062222334383},null,null,null,null,null,null,null,null,{"$f":"SUM(CU147,CU151,CU154,CU157,CU159)","v":61.059746770277343},null,null,null,null,null,null,{"$f":"SUM(DB147,DB151,DB154,DB157,DB159)","v":73.617349209299817},null,null,null,null,null,null,{"$f":"SUM(DI147,DI151,DI154,DI157,DI159)","v":95.255414216987162}]
[]
[]
[]
[]
["T5 (2 X 14W) - Cost build-up"]
[]
["Additional assumptions"]
["Proportion of luminaire that will fail before bulk change",null,null,{"$f":"'DNSP Inputs O & M'!$D$151","v":0.114},null,null,null,null,null,null,null,null,null,null,null,null,null,null,null,null,null,null,null,null,null,null,{"$f":"'DNSP Inputs O & M'!$E$151","v":0.114},null,null,null,null,null,null,null,null,null,null,null,null,null,null,null,null,null,null,null,null,null,null,{"$f":"'DNSP Inputs O & M'!$F$151","v":0.114},null,null,null,null,null,null,null,null,null,null,null,null,null,null,null,null,null,null,null,null,null,null,{"$f":"'DNSP Inputs O & M'!$G$151","v":0.114},null,null,null,null,null,null,null,null,null,null,null,null,null,null,null,null,null,null,null,null,null,null,{"$f":"'DNSP Inputs O & M'!$H$151","v":0.114}]
["Proportion of lamps that will fail before bulk change (per year)",null,null,{"$f":"D169/'DNSP Inputs O & M'!$D$148","v":2.8500000000000001E-2},null,null,null,null,null,null,null,null,null,null,null,null,null,null,null,null,null,null,null,null,null,null,{"$f":"AA169/'DNSP Inputs O & M'!$E$148","v":2.8500000000000001E-2},null,null,null,null,null,null,null,null,null,null,null,null,null,null,null,null,null,null,null,null,null,null,{"$f":"AX169/'DNSP Inputs O & M'!$F$148","v":2.8500000000000001E-2},null,null,null,null,null,null,null,null,null,null,null,null,null,null,null,null,null,null,null,null,null,null,{"$f":"BU169/'DNSP Inputs O & M'!$G$148","v":2.8500000000000001E-2},null,null,null,null,null,null,null,null,null,null,null,null,null,null,null,null,null,null,null,null,null,null,{"$f":"CR169/'DNSP Inputs O & M'!$H$148","v":2.8500000000000001E-2}]
["Overheads are applied to material and labour components"]
["All costs and charges are exclusive of GST"]
[]
[null,"Urban",null,null,null,null,null,null,"Rural",null,null,null,null,null,null,"Remote",null,null,null,null,null,null,null,null,"Urban",null,null,null,null,null,null,"Rural",null,null,null,null,null,null,"Remote",null,null,null,null,null,null,null,null,"Urban",null,null,null,null,null,null,"Rural",null,null,null,null,null,null,"Remote",null,null,null,null,null,null,null,null,"Urban",null,null,null,null,null,null,"Rural",null,null,null,null,null,null,"Remote",null,null,null,null,null,null,null,null,"Urban",null,null,null,null,null,null,"Rural",null,null,null,null,null,null,"Remote"]
[]
[null,"Unit rate","Number","Hours","Cost","Annualised","Annualised",null,"Unit rate","Number","Hours","Cost","Annualised","Annualised",null,"Unit rate","Number","Hours","Cost","Annualised","Annualised",null,null,null,"Unit rate","Number","Hours","Cost","Annualised","Annualised",null,"Unit rate","Number","Hours","Cost","Annualised","Annualised",null,"Unit rate","Number","Hours","Cost","Annualised","Annualised",null,null,null,"Unit rate","Number","Hours","Cost","Annualised","Annualised",null,"Unit rate","Number","Hours","Cost","Annualised","Annualised",null,"Unit rate","Number","Hours","Cost","Annualised","Annualised",null,null,null,"Unit rate","Number","Hours","Cost","Annualised","Annualised",null,"Unit rate","Number","Hours","Cost","Annualised","Annualised",null,"Unit rate","Number","Hours","Cost","Annualised","Annualised",null,null,null,"Unit rate","Number","Hours","Cost","Annualised","Annualised",null,"Unit rate","Number","Hours","Cost","Annualised","Annualised",null,"Unit rate","Number","Hours","Cost","Annualised","Annualised"]
[null,null,null,null,null," cost","unit cost",null,null,null,null,null," cost","unit cost",null,null,null,null,null," cost","unit cost",null,null,null,null,null,null,null," cost","unit cost",null,null,null,null,null," cost","unit cost",null,null,null,null,null," cost","unit cost",null,null,null,null,null,null,null," cost","unit cost",null,null,null,null,null," cost","unit cost",null,null,null,null,null," cost","unit cost",null,null,null,null,null,null,null," cost","unit cost",null,null,null,null,null," cost","unit cost",null,null,null,null,null," cost","unit cost",null,null,null,null,null,null,null," cost","unit cost",null,null,null,null,null," cost","unit cost",null,null,null,null,null," cost","unit cost"]
["T5 (2 X 14W)"]
["Bulk change & repairs"]
["Materials - bulk lamp change"]
["Lamp",{"$f":"'DNSP Inputs O & M'!$D$152","v":9.9980392225172814},{"$f":"'DNSP Inputs O & M'!$D$158","v":73.92},null,{"$f":"B181*C181","v":739.05505932847745},{"$f":"E181/'DNSP Inputs O & M'!$D$148*0.8","v":147.81101186569549},{"$f":"(F181+F182+F183)/C181","v":4.3585202235661278},null,{"$f":"'DNSP Inputs O & M'!$D$152*(1+'DNSP Inputs O & M'!$D$11)","v":10.497941183643146},{"$f":"'DNSP Inputs O & M'!$D$159","v":61.44},null,{"$f":"I181*J181","v":644.99350632303492},{"$f":"L181/'DNSP Inputs O & M'!$D$148*0.8","v":128.99870126460698},{"$f":"(M181+M182+M183)/J181","v":4.5764462347444343},null,{"$f":"'DNSP Inputs O & M'!$D$152*(1+'DNSP Inputs O & M'!$D$11)","v":10.497941183643146},{"$f":"'DNSP Inputs O & M'!$D$160","v":48.96},null,{"$f":"P181*Q181","v":513.9792003511684},{"$f":"S181/'DNSP Inputs O & M'!$D$148*0.8","v":102.79584007023368},{"$f":"(T181+T182+T183)/Q181","v":4.5764462347444335},null,null,null,{"$f":"'DNSP Inputs O & M'!$E$152","v":9.9980392225172814},{"$f":"'DNSP Inputs O & M'!$E$158","v":73.92},null,{"$f":"Y181*Z181","v":739.05505932847745},{"$f":"AB181/'DNSP Inputs O & M'!$E$148*0.8","v":147.81101186569549},{"$f":"(AC181+AC182+AC183)/Z181","v":4.3585202235661278},null,{"$f":"'DNSP Inputs O & M'!$E$152*(1+'DNSP Inputs O & M'!$E$11)","v":10.497941183643146},{"$f":"'DNSP Inputs O & M'!$E$159","v":61.44},null,{"$f":"AF181*AG181","v":644.99350632303492},{"$f":"AI181/'DNSP Inputs O & M'!$E$148*0.8","v":128.99870126460698},{"$f":"(AJ181+AJ182+AJ183)/AG181","v":4.5764462347444343},null,{"$f":"'DNSP Inputs O & M'!$E$152*(1+'DNSP Inputs O & M'!$E$11)","v":10.497941183643146},{"$f":"'DNSP Inputs O & M'!$E$160","v":48.96},null,{"$f":"AM181*AN181","v":513.9792003511684},{"$f":"AP181/'DNSP Inputs O & M'!$E$148*0.8","v":102.79584007023368},{"$f":"(AQ181+AQ182+AQ183)/AN181","v":4.5764462347444335},null,null,null,{"$f":"'DNSP Inputs O & M'!$F$152","v":9.9980392225172814},{"$f":"'DNSP Inputs O & M'!$F$158","v":73.92},null,{"$f":"AV181*AW181","v":739.05505932847745},{"$f":"AY181/'DNSP Inputs O & M'!$F$148*0.8","v":147.81101186569549},{"$f":"(AZ181+AZ182+AZ183)/AW181","v":4.3585202235661278},null,{"$f":"'DNSP Inputs O & M'!$F$152*(1+'DNSP Inputs O & M'!$F$11)","v":10.497941183643146},{"$f":"'DNSP Inputs O & M'!$F$159","v":61.44},null,{"$f":"BC181*BD181","v":644.99350632303492},{"$f":"BF181/'DNSP Inputs O & M'!$F$148*0.8","v":128.99870126460698},{"$f":"(BG181+BG182+BG183)/BD181","v":4.5764462347444343},null,{"$f":"'DNSP Inputs O & M'!$F$152*(1+'DNSP Inputs O & M'!$F$11)","v":10.497941183643146},{"$f":"'DNSP Inputs O & M'!$F$160","v":48.96},null,{"$f":"BJ181*BK181","v":513.9792003511684},{"$f":"BM181/'DNSP Inputs O & M'!$F$148*0.8","v":102.79584007023368},{"$f":"(BN181+BN182+BN183)/BK181","v":4.5764462347444335},null,null,null,{"$f":"'DNSP Inputs O & M'!$G$152","v":9.9980392225172814},{"$f":"'DNSP Inputs O & M'!$G$158","v":73.92},null,{"$f":"BS181*BT181","v":739.05505932847745},{"$f":"BV181/'DNSP Inputs O & M'!$G$148*0.8","v":147.81101186569549},{"$f":"(BW181+BW182+BW183)/BT181","v":4.3585202235661278},null,{"$f":"'DNSP Inputs O & M'!$G$152*(1+'DNSP Inputs O & M'!$G$11)","v":10.497941183643146},{"$f":"'DNSP Inputs O & M'!$G$159","v":61.44},null,{"$f":"BZ181*CA181","v":644.99350632303492},{"$f":"CC181/'DNSP Inputs O & M'!$G$148*0.8","v":128.99870126460698},{"$f":"(CD181+CD182+CD183)/CA181","v":4.5764462347444343},null,{"$f":"'DNSP Inputs O & M'!$G$152*(1+'DNSP Inputs O & M'!$G$11)","v":10.497941183643146},{"$f":"'DNSP Inputs O & M'!$G$160","v":48.96},null,{"$f":"CG181*CH181","v":513.9792003511684},{"$f":"CJ181/'DNSP Inputs O & M'!$G$148*0.8","v":102.79584007023368},{"$f":"(CK181+CK182+CK183)/CH181","v":4.5764462347444335},null,null,null,{"$f":"'DNSP Inputs O & M'!$H$152","v":9.9980392225172814},{"$f":"'DNSP Inputs O & M'!$H$158","v":73.92},null,{"$f":"CP181*CQ181","v":739.05505932847745},{"$f":"CS181/'DNSP Inputs O & M'!$H$148*0.8","v":147.81101186569549},{"$f":"(CT181+CT182+CT183)/CQ181","v":4.3585202235661278},null,{"$f":"'DNSP Inputs O & M'!$H$152*(1+'DNSP Inputs O & M'!$H$11)","v":10.497941183643146},{"$f":"'DNSP Inputs O & M'!$H$159","v":61.44},null,{"$f":"CW181*CX181","v":644.99350632303492},{"$f":"CZ181/'DNSP Inputs O & M'!$H$148*0.8","v":128.99870126460698},{"$f":"(DA181+DA182+DA183)/CX181","v":4.5764462347444343},null,{"$f":"'DNSP Inputs O & M'!$H$152*(1+'DNSP Inputs O & M'!$H$11)","v":10.497941183643146},{"$f":"'DNSP Inputs O & M'!$H$160","v":48.96},null,{"$f":"DD181*DE181","v":513.9792003511684},{"$f":"DG181/'DNSP Inputs O & M'!$H$148*0.8","v":102.79584007023368},{"$f":"(DH181+DH182+DH183)/DE181","v":4.5764462347444335}]
["PE cell",{"$f":"'DNSP Inputs O & M'!$D$153","v":16.871691187997911},{"$f":"C181*'DNSP Inputs O & M'!$D$148/'DNSP Inputs O & M'!$D$149","v":36.96},null,{"$f":"B182*C182","v":623.57770630840275},{"$f":"E182/'DNSP Inputs O & M'!$D$148","v":155.89442657710069},null,null,{"$f":"'DNSP Inputs O & M'!$D$153*(1+'DNSP Inputs O & M'!$D$11)","v":17.715275747397808},{"$f":"J181*'DNSP Inputs O & M'!$D$148/'DNSP Inputs O & M'!$D$149","v":30.72},null,{"$f":"I182*J182","v":544.21327096006064},{"$f":"L182/'DNSP Inputs O & M'!$D$148","v":136.05331774001516},null,null,{"$f":"'DNSP Inputs O & M'!$D$153*(1+'DNSP Inputs O & M'!$D$11)","v":17.715275747397808},{"$f":"Q181*'DNSP Inputs O & M'!$D$148/'DNSP Inputs O & M'!$D$149","v":24.48},null,{"$f":"P182*Q182","v":433.66995029629834},{"$f":"S182/'DNSP Inputs O & M'!$D$148","v":108.41748757407458},null,null,null,null,{"$f":"'DNSP Inputs O & M'!$E$153","v":16.871691187997911},{"$f":"Z181*'DNSP Inputs O & M'!$E$148/'DNSP Inputs O & M'!$E$149","v":36.96},null,{"$f":"Y182*Z182","v":623.57770630840275},{"$f":"AB182/'DNSP Inputs O & M'!$E$148","v":155.89442657710069},null,null,{"$f":"'DNSP Inputs O & M'!$E$153*(1+'DNSP Inputs O & M'!$E$11)","v":17.715275747397808},{"$f":"AG181*'DNSP Inputs O & M'!$E$148/'DNSP Inputs O & M'!$E$149","v":30.72},null,{"$f":"AF182*AG182","v":544.21327096006064},{"$f":"AI182/'DNSP Inputs O & M'!$E$148","v":136.05331774001516},null,null,{"$f":"'DNSP Inputs O & M'!$E$153*(1+'DNSP Inputs O & M'!$E$11)","v":17.715275747397808},{"$f":"AN181*'DNSP Inputs O & M'!$E$148/'DNSP Inputs O & M'!$E$149","v":24.48},null,{"$f":"AM182*AN182","v":433.66995029629834},{"$f":"AP182/'DNSP Inputs O & M'!$E$148","v":108.41748757407458},null,null,null,null,{"$f":"'DNSP Inputs O & M'!$F$153","v":16.871691187997911},{"$f":"AW181*'DNSP Inputs O & M'!$F$148/'DNSP Inputs O & M'!$F$149","v":36.96},null,{"$f":"AV182*AW182","v":623.57770630840275},{"$f":"AY182/'DNSP Inputs O & M'!$F$148","v":155.89442657710069},null,null,{"$f":"'DNSP Inputs O & M'!$F$153*(1+'DNSP Inputs O & M'!$F$11)","v":17.715275747397808},{"$f":"BD181*'DNSP Inputs O & M'!$F$148/'DNSP Inputs O & M'!$F$149","v":30.72},null,{"$f":"BC182*BD182","v":544.21327096006064},{"$f":"BF182/'DNSP Inputs O & M'!$F$148","v":136.05331774001516},null,null,{"$f":"'DNSP Inputs O & M'!$F$153*(1+'DNSP Inputs O & M'!$F$11)","v":17.715275747397808},{"$f":"BK181*'DNSP Inputs O & M'!$F$148/'DNSP Inputs O & M'!$F$149","v":24.48},null,{"$f":"BJ182*BK182","v":433.66995029629834},{"$f":"BM182/'DNSP Inputs O & M'!$F$148","v":108.41748757407458},null,null,null,null,{"$f":"'DNSP Inputs O & M'!$G$153","v":16.871691187997911},{"$f":"BT181*'DNSP Inputs O & M'!$G$148/'DNSP Inputs O & M'!$G$149","v":36.96},null,{"$f":"BS182*BT182","v":623.57770630840275},{"$f":"BV182/'DNSP Inputs O & M'!$G$148","v":155.89442657710069},null,null,{"$f":"'DNSP Inputs O & M'!$G$153*(1+'DNSP Inputs O & M'!$G$11)","v":17.715275747397808},{"$f":"CA181*'DNSP Inputs O & M'!$G$148/'DNSP Inputs O & M'!$G$149","v":30.72},null,{"$f":"BZ182*CA182","v":544.21327096006064},{"$f":"CC182/'DNSP Inputs O & M'!$G$148","v":136.05331774001516},null,null,{"$f":"'DNSP Inputs O & M'!$G$153*(1+'DNSP Inputs O & M'!$G$11)","v":17.715275747397808},{"$f":"CH181*'DNSP Inputs O & M'!$G$148/'DNSP Inputs O & M'!$G$149","v":24.48},null,{"$f":"CG182*CH182","v":433.66995029629834},{"$f":"CJ182/'DNSP Inputs O & M'!$G$148","v":108.41748757407458},null,null,null,null,{"$f":"'DNSP Inputs O & M'!$H$153","v":16.871691187997911},{"$f":"CQ181*'DNSP Inputs O & M'!$H$148/'DNSP Inputs O & M'!$H$149","v":36.96},null,{"$f":"CP182*CQ182","v":623.57770630840275},{"$f":"CS182/'DNSP Inputs O & M'!$H$148","v":155.89442657710069},null,null,{"$f":"'DNSP Inputs O & M'!$H$153*(1+'DNSP Inputs O & M'!$H$11)","v":17.715275747397808},{"$f":"CX181*'DNSP Inputs O & M'!$H$148/'DNSP Inputs O & M'!$H$149","v":30.72},null,{"$f":"CW182*CX182","v":544.21327096006064},{"$f":"CZ182/'DNSP Inputs O & M'!$H$148","v":136.05331774001516},null,null,{"$f":"'DNSP Inputs O & M'!$H$153*(1+'DNSP Inputs O & M'!$H$11)","v":17.715275747397808},{"$f":"DE181*'DNSP Inputs O & M'!$H$148/'DNSP Inputs O & M'!$H$149","v":24.48},null,{"$f":"DD182*DE182","v":433.66995029629834},{"$f":"DG182/'DNSP Inputs O & M'!$H$148","v":108.41748757407458}]
["Miscellaneous",{"$f":"'DNSP Inputs O & M'!$D$155","v":1.2497549028146602},{"$f":"'DNSP Inputs O & M'!$D$158","v":73.92},null,{"$f":"B183*C183","v":92.381882416059682},{"$f":"E183/'DNSP Inputs O & M'!$D$148*0.8","v":18.476376483211936},null,null,{"$f":"'DNSP Inputs O & M'!$D$155*(1+'DNSP Inputs O & M'!$D$11)","v":1.3122426479553932},{"$f":"'DNSP Inputs O & M'!$D$159","v":61.44},null,{"$f":"I183*J183","v":80.624188290379365},{"$f":"L183/'DNSP Inputs O & M'!$D$148*0.8","v":16.124837658075872},null,null,{"$f":"'DNSP Inputs O & M'!$D$155*(1+'DNSP Inputs O & M'!$D$11)","v":1.3122426479553932},{"$f":"'DNSP Inputs O & M'!$D$160","v":48.96},null,{"$f":"P183*Q183","v":64.24740004389605},{"$f":"S183/'DNSP Inputs O & M'!$D$148*0.8","v":12.84948000877921},null,null,null,null,{"$f":"'DNSP Inputs O & M'!$E$155","v":1.2497549028146602},{"$f":"'DNSP Inputs O & M'!$E$158","v":73.92},null,{"$f":"Y183*Z183","v":92.381882416059682},{"$f":"AB183/'DNSP Inputs O & M'!$E$148*0.8","v":18.476376483211936},null,null,{"$f":"'DNSP Inputs O & M'!$E$155*(1+'DNSP Inputs O & M'!$E$11)","v":1.3122426479553932},{"$f":"'DNSP Inputs O & M'!$E$159","v":61.44},null,{"$f":"AF183*AG183","v":80.624188290379365},{"$f":"AI183/'DNSP Inputs O & M'!$E$148*0.8","v":16.124837658075872},null,null,{"$f":"'DNSP Inputs O & M'!$E$155*(1+'DNSP Inputs O & M'!$E$11)","v":1.3122426479553932},{"$f":"'DNSP Inputs O & M'!$E$160","v":48.96},null,{"$f":"AM183*AN183","v":64.24740004389605},{"$f":"AP183/'DNSP Inputs O & M'!$E$148*0.8","v":12.84948000877921},null,null,null,null,{"$f":"'DNSP Inputs O & M'!$F$155","v":1.2497549028146602},{"$f":"'DNSP Inputs O & M'!$F$158","v":73.92},null,{"$f":"AV183*AW183","v":92.381882416059682},{"$f":"AY183/'DNSP Inputs O & M'!$F$148*0.8","v":18.476376483211936},null,null,{"$f":"'DNSP Inputs O & M'!$F$155*(1+'DNSP Inputs O & M'!$F$11)","v":1.3122426479553932},{"$f":"'DNSP Inputs O & M'!$F$159","v":61.44},null,{"$f":"BC183*BD183","v":80.624188290379365},{"$f":"BF183/'DNSP Inputs O & M'!$F$148*0.8","v":16.124837658075872},null,null,{"$f":"'DNSP Inputs O & M'!$F$155*(1+'DNSP Inputs O & M'!$F$11)","v":1.3122426479553932},{"$f":"'DNSP Inputs O & M'!$F$160","v":48.96},null,{"$f":"BJ183*BK183","v":64.24740004389605},{"$f":"BM183/'DNSP Inputs O & M'!$F$148*0.8","v":12.84948000877921},null,null,null,null,{"$f":"'DNSP Inputs O & M'!$G$155","v":1.2497549028146602},{"$f":"'DNSP Inputs O & M'!$G$158","v":73.92},null,{"$f":"BS183*BT183","v":92.381882416059682},{"$f":"BV183/'DNSP Inputs O & M'!$G$148*0.8","v":18.476376483211936},null,null,{"$f":"'DNSP Inputs O & M'!$G$155*(1+'DNSP Inputs O & M'!$G$11)","v":1.3122426479553932},{"$f":"'DNSP Inputs O & M'!$G$159","v":61.44},null,{"$f":"BZ183*CA183","v":80.624188290379365},{"$f":"CC183/'DNSP Inputs O & M'!$G$148*0.8","v":16.124837658075872},null,null,{"$f":"'DNSP Inputs O & M'!$G$155*(1+'DNSP Inputs O & M'!$G$11)","v":1.3122426479553932},{"$f":"'DNSP Inputs O & M'!$G$160","v":48.96},null,{"$f":"CG183*CH183","v":64.24740004389605},{"$f":"CJ183/'DNSP Inputs O & M'!$G$148*0.8","v":12.84948000877921},null,null,null,null,{"$f":"'DNSP Inputs O & M'!$H$155","v":1.2497549028146602},{"$f":"'DNSP Inputs O & M'!$H$158","v":73.92},null,{"$f":"CP183*CQ183","v":92.381882416059682},{"$f":"CS183/'DNSP Inputs O & M'!$H$148*0.8","v":18.476376483211936},null,null,{"$f":"'DNSP Inputs O & M'!$H$155*(1+'DNSP Inputs O & M'!$H$11)","v":1.3122426479553932},{"$f":"'DNSP Inputs O & M'!$H$159","v":61.44},null,{"$f":"CW183*CX183","v":80.624188290379365},{"$f":"CZ183/'DNSP Inputs O & M'!$H$148*0.8","v":16.124837658075872},null,null,{"$f":"'DNSP Inputs O & M'!$H$155*(1+'DNSP Inputs O & M'!$H$11)","v":1.3122426479553932},{"$f":"'DNSP Inputs O & M'!$H$160","v":48.96},null,{"$f":"DD183*DE183","v":64.24740004389605},{"$f":"DG183/'DNSP Inputs O & M'!$H$148*0.8","v":12.84948000877921}]
["Materials - repair of faults"]
["Lamp",{"$f":"'DNSP Inputs O & M'!$D$152","v":9.9980392225172814},{"$f":"'DNSP Inputs O & M'!$D$161*'DNSP Inputs O & M'!$D$164","v":14.975999999999999},null,{"$f":"B185*C185","v":149.73063539641879},{"$f":"(E185+E186+E187+E188)/'DNSP Inputs O & M'!$D$161","v":60.896807149449941},{"$f":"F185*D170","v":1.7355590037593234},null,{"$f":"'DNSP Inputs O & M'!$D$152*(1+'DNSP Inputs O & M'!$D$11)","v":10.497941183643146},{"$f":"'DNSP Inputs O & M'!$D$162*'DNSP Inputs O & M'!$D$164","v":12.096},null,{"$f":"I185*J185","v":126.98309655734749},{"$f":"(L185+L186+L187+L188)/'DNSP Inputs O & M'!$D$162","v":63.941647506922457},{"$f":"M185*D170","v":1.82233695394729},null,{"$f":"'DNSP Inputs O & M'!$D$152*(1+'DNSP Inputs O & M'!$D$11)","v":10.497941183643146},{"$f":"'DNSP Inputs O & M'!$D$163*'DNSP Inputs O & M'!$D$164","v":9.7919999999999998},null,{"$f":"P185*Q185","v":102.79584007023368},{"$f":"(S185+S186+S187+S188)/'DNSP Inputs O & M'!$D$163","v":63.94164750692245},{"$f":"T185*D170","v":1.82233695394729},null,null,null,{"$f":"'DNSP Inputs O & M'!$E$152","v":9.9980392225172814},{"$f":"'DNSP Inputs O & M'!$E$161*'DNSP Inputs O & M'!$E$164","v":14.975999999999999},null,{"$f":"Y185*Z185","v":149.73063539641879},{"$f":"(AB185+AB186+AB187+AB188)/'DNSP Inputs O & M'!$E$161","v":60.896807149449941},{"$f":"AC185*AA170","v":1.7355590037593234},null,{"$f":"'DNSP Inputs O & M'!$E$152*(1+'DNSP Inputs O & M'!$E$11)","v":10.497941183643146},{"$f":"'DNSP Inputs O & M'!$E$162*'DNSP Inputs O & M'!$E$164","v":12.096},null,{"$f":"AF185*AG185","v":126.98309655734749},{"$f":"(AI185+AI186+AI187+AI188)/'DNSP Inputs O & M'!$E$162","v":63.941647506922457},{"$f":"AJ185*AA170","v":1.82233695394729},null,{"$f":"'DNSP Inputs O & M'!$E$152*(1+'DNSP Inputs O & M'!$E$11)","v":10.497941183643146},{"$f":"'DNSP Inputs O & M'!$E$163*'DNSP Inputs O & M'!$E$164","v":9.7919999999999998},null,{"$f":"AM185*AN185","v":102.79584007023368},{"$f":"(AP185+AP186+AP187+AP188)/'DNSP Inputs O & M'!$E$163","v":63.94164750692245},{"$f":"AQ185*AA170","v":1.82233695394729},null,null,null,{"$f":"'DNSP Inputs O & M'!$F$152","v":9.9980392225172814},{"$f":"'DNSP Inputs O & M'!$F$161*'DNSP Inputs O & M'!$F$164","v":14.975999999999999},null,{"$f":"AV185*AW185","v":149.73063539641879},{"$f":"(AY185+AY186+AY187+AY188)/'DNSP Inputs O & M'!$F$161","v":60.896807149449941},{"$f":"AZ185*AX170","v":1.7355590037593234},null,{"$f":"'DNSP Inputs O & M'!$F$152*(1+'DNSP Inputs O & M'!$F$11)","v":10.497941183643146},{"$f":"'DNSP Inputs O & M'!$F$162*'DNSP Inputs O & M'!$F$164","v":12.096},null,{"$f":"BC185*BD185","v":126.98309655734749},{"$f":"(BF185+BF186+BF187+BF188)/'DNSP Inputs O & M'!$F$162","v":63.941647506922457},{"$f":"BG185*AX170","v":1.82233695394729},null,{"$f":"'DNSP Inputs O & M'!$F$152*(1+'DNSP Inputs O & M'!$F$11)","v":10.497941183643146},{"$f":"'DNSP Inputs O & M'!$F$163*'DNSP Inputs O & M'!$F$164","v":9.7919999999999998},null,{"$f":"BJ185*BK185","v":102.79584007023368},{"$f":"(BM185+BM186+BM187+BM188)/'DNSP Inputs O & M'!$F$163","v":63.94164750692245},{"$f":"BN185*AX170","v":1.82233695394729},null,null,null,{"$f":"'DNSP Inputs O & M'!$G$152","v":9.9980392225172814},{"$f":"'DNSP Inputs O & M'!$G$161*'DNSP Inputs O & M'!$G$164","v":14.975999999999999},null,{"$f":"BS185*BT185","v":149.73063539641879},{"$f":"(BV185+BV186+BV187+BV188)/'DNSP Inputs O & M'!$G$161","v":60.896807149449941},{"$f":"BW185*BU170","v":1.7355590037593234},null,{"$f":"'DNSP Inputs O & M'!$G$152*(1+'DNSP Inputs O & M'!$G$11)","v":10.497941183643146},{"$f":"'DNSP Inputs O & M'!$G$162*'DNSP Inputs O & M'!$G$164","v":12.096},null,{"$f":"BZ185*CA185","v":126.98309655734749},{"$f":"(CC185+CC186+CC187+CC188)/'DNSP Inputs O & M'!$G$162","v":63.941647506922457},{"$f":"CD185*BU170","v":1.82233695394729},null,{"$f":"'DNSP Inputs O & M'!$G$152*(1+'DNSP Inputs O & M'!$G$11)","v":10.497941183643146},{"$f":"'DNSP Inputs O & M'!$G$163*'DNSP Inputs O & M'!$G$164","v":9.7919999999999998},null,{"$f":"CG185*CH185","v":102.79584007023368},{"$f":"(CJ185+CJ186+CJ187+CJ188)/'DNSP Inputs O & M'!$G$163","v":63.94164750692245},{"$f":"CK185*BU170","v":1.82233695394729},null,null,null,{"$f":"'DNSP Inputs O & M'!$H$152","v":9.9980392225172814},{"$f":"'DNSP Inputs O & M'!$H$161*'DNSP Inputs O & M'!$H$164","v":14.975999999999999},null,{"$f":"CP185*CQ185","v":149.73063539641879},{"$f":"(CS185+CS186+CS187+CS188)/'DNSP Inputs O & M'!$H$161","v":60.896807149449941},{"$f":"CT185*CR170","v":1.7355590037593234},null,{"$f":"'DNSP Inputs O & M'!$H$152*(1+'DNSP Inputs O & M'!$H$11)","v":10.497941183643146},{"$f":"'DNSP Inputs O & M'!$H$162*'DNSP Inputs O & M'!$H$164","v":12.096},null,{"$f":"CW185*CX185","v":126.98309655734749},{"$f":"(CZ185+CZ186+CZ187+CZ188)/'DNSP Inputs O & M'!$H$162","v":63.941647506922457},{"$f":"DA185*CR170","v":1.82233695394729},null,{"$f":"'DNSP Inputs O & M'!$H$152*(1+'DNSP Inputs O & M'!$H$11)","v":10.497941183643146},{"$f":"'DNSP Inputs O & M'!$H$163*'DNSP Inputs O & M'!$H$164","v":9.7919999999999998},null,{"$f":"DD185*DE185","v":102.79584007023368},{"$f":"(DG185+DG186+DG187+DG188)/'DNSP Inputs O & M'!$H$163","v":63.94164750692245},{"$f":"DH185*CR170","v":1.82233695394729}]
["PE cell",{"$f":"'DNSP Inputs O & M'!$D$153","v":16.871691187997911},{"$f":"'DNSP Inputs O & M'!$D$161*'DNSP Inputs O & M'!$D$165","v":12.48},null,{"$f":"B186*C186","v":210.55870602621394},null,null,null,{"$f":"'DNSP Inputs O & M'!$D$153*(1+'DNSP Inputs O & M'!$D$11)","v":17.715275747397808},{"$f":"'DNSP Inputs O & M'!$D$162*'DNSP Inputs O & M'!$D$165","v":10.08},null,{"$f":"I186*J186","v":178.5699795337699},null,null,null,{"$f":"'DNSP Inputs O & M'!$D$153*(1+'DNSP Inputs O & M'!$D$11)","v":17.715275747397808},{"$f":"'DNSP Inputs O & M'!$D$163*'DNSP Inputs O & M'!$D$165","v":8.16},null,{"$f":"P186*Q186","v":144.55665009876611},null,null,null,null,null,{"$f":"'DNSP Inputs O & M'!$E$153","v":16.871691187997911},{"$f":"'DNSP Inputs O & M'!$E$161*'DNSP Inputs O & M'!$E$165","v":12.48},null,{"$f":"Y186*Z186","v":210.55870602621394},null,null,null,{"$f":"'DNSP Inputs O & M'!$E$153*(1+'DNSP Inputs O & M'!$E$11)","v":17.715275747397808},{"$f":"'DNSP Inputs O & M'!$E$162*'DNSP Inputs O & M'!$E$165","v":10.08},null,{"$f":"AF186*AG186","v":178.5699795337699},null,null,null,{"$f":"'DNSP Inputs O & M'!$E$153*(1+'DNSP Inputs O & M'!$E$11)","v":17.715275747397808},{"$f":"'DNSP Inputs O & M'!$E$163*'DNSP Inputs O & M'!$E$165","v":8.16},null,{"$f":"AM186*AN186","v":144.55665009876611},null,null,null,null,null,{"$f":"'DNSP Inputs O & M'!$F$153","v":16.871691187997911},{"$f":"'DNSP Inputs O & M'!$F$161*'DNSP Inputs O & M'!$F$165","v":12.48},null,{"$f":"AV186*AW186","v":210.55870602621394},null,null,null,{"$f":"'DNSP Inputs O & M'!$F$153*(1+'DNSP Inputs O & M'!$F$11)","v":17.715275747397808},{"$f":"'DNSP Inputs O & M'!$F$162*'DNSP Inputs O & M'!$F$165","v":10.08},null,{"$f":"BC186*BD186","v":178.5699795337699},null,null,null,{"$f":"'DNSP Inputs O & M'!$F$153*(1+'DNSP Inputs O & M'!$F$11)","v":17.715275747397808},{"$f":"'DNSP Inputs O & M'!$F$163*'DNSP Inputs O & M'!$F$165","v":8.16},null,{"$f":"BJ186*BK186","v":144.55665009876611},null,null,null,null,null,{"$f":"'DNSP Inputs O & M'!$G$153","v":16.871691187997911},{"$f":"'DNSP Inputs O & M'!$G$161*'DNSP Inputs O & M'!$G$165","v":12.48},null,{"$f":"BS186*BT186","v":210.55870602621394},null,null,null,{"$f":"'DNSP Inputs O & M'!$G$153*(1+'DNSP Inputs O & M'!$G$11)","v":17.715275747397808},{"$f":"'DNSP Inputs O & M'!$G$162*'DNSP Inputs O & M'!$G$165","v":10.08},null,{"$f":"BZ186*CA186","v":178.5699795337699},null,null,null,{"$f":"'DNSP Inputs O & M'!$G$153*(1+'DNSP Inputs O & M'!$G$11)","v":17.715275747397808},{"$f":"'DNSP Inputs O & M'!$G$163*'DNSP Inputs O & M'!$G$165","v":8.16},null,{"$f":"CG186*CH186","v":144.55665009876611},null,null,null,null,null,{"$f":"'DNSP Inputs O & M'!$H$153","v":16.871691187997911},{"$f":"'DNSP Inputs O & M'!$H$161*'DNSP Inputs O & M'!$H$165","v":12.48},null,{"$f":"CP186*CQ186","v":210.55870602621394},null,null,null,{"$f":"'DNSP Inputs O & M'!$H$153*(1+'DNSP Inputs O & M'!$H$11)","v":17.715275747397808},{"$f":"'DNSP Inputs O & M'!$H$162*'DNSP Inputs O & M'!$H$165","v":10.08},null,{"$f":"CW186*CX186","v":178.5699795337699},null,null,null,{"$f":"'DNSP Inputs O & M'!$H$153*(1+'DNSP Inputs O & M'!$H$11)","v":17.715275747397808},{"$f":"'DNSP Inputs O & M'!$H$163*'DNSP Inputs O & M'!$H$165","v":8.16},null,{"$f":"DD186*DE186","v":144.55665009876611}]
["Luminaire",{"$f":"'DNSP Inputs O & M'!$D$154","v":301.41588746083977},{"$f":"'DNSP Inputs O & M'!$D$161*'DNSP Inputs O & M'!$D$166","v":3.7439999999999998},null,{"$f":"B187*C187","v":1128.5010826533839},null,null,null,{"$f":"'DNSP Inputs O & M'!$D$154*(1+'DNSP Inputs O & M'!$D$11)","v":316.48668183388179},{"$f":"'DNSP Inputs O & M'!$D$162*'DNSP Inputs O & M'!$D$166","v":3.024},null,{"$f":"I187*J187","v":957.05572586565859},null,null,null,{"$f":"'DNSP Inputs O & M'!$D$154*(1+'DNSP Inputs O & M'!$D$11)","v":316.48668183388179},{"$f":"'DNSP Inputs O & M'!$D$163*'DNSP Inputs O & M'!$D$166","v":2.448},null,{"$f":"P187*Q187","v":774.75939712934257},null,null,null,null,null,{"$f":"'DNSP Inputs O & M'!$E$154","v":301.41588746083977},{"$f":"'DNSP Inputs O & M'!$E$161*'DNSP Inputs O & M'!$E$166","v":3.7439999999999998},null,{"$f":"Y187*Z187","v":1128.5010826533839},null,null,null,{"$f":"'DNSP Inputs O & M'!$E$154*(1+'DNSP Inputs O & M'!$E$11)","v":316.48668183388179},{"$f":"'DNSP Inputs O & M'!$E$162*'DNSP Inputs O & M'!$E$166","v":3.024},null,{"$f":"AF187*AG187","v":957.05572586565859},null,null,null,{"$f":"'DNSP Inputs O & M'!$E$154*(1+'DNSP Inputs O & M'!$E$11)","v":316.48668183388179},{"$f":"'DNSP Inputs O & M'!$E$163*'DNSP Inputs O & M'!$E$166","v":2.448},null,{"$f":"AM187*AN187","v":774.75939712934257},null,null,null,null,null,{"$f":"'DNSP Inputs O & M'!$F$154","v":301.41588746083977},{"$f":"'DNSP Inputs O & M'!$F$161*'DNSP Inputs O & M'!$F$166","v":3.7439999999999998},null,{"$f":"AV187*AW187","v":1128.5010826533839},null,null,null,{"$f":"'DNSP Inputs O & M'!$F$154*(1+'DNSP Inputs O & M'!$F$11)","v":316.48668183388179},{"$f":"'DNSP Inputs O & M'!$F$162*'DNSP Inputs O & M'!$F$166","v":3.024},null,{"$f":"BC187*BD187","v":957.05572586565859},null,null,null,{"$f":"'DNSP Inputs O & M'!$F$154*(1+'DNSP Inputs O & M'!$F$11)","v":316.48668183388179},{"$f":"'DNSP Inputs O & M'!$F$163*'DNSP Inputs O & M'!$F$166","v":2.448},null,{"$f":"BJ187*BK187","v":774.75939712934257},null,null,null,null,null,{"$f":"'DNSP Inputs O & M'!$G$154","v":301.41588746083977},{"$f":"'DNSP Inputs O & M'!$G$161*'DNSP Inputs O & M'!$G$166","v":3.7439999999999998},null,{"$f":"BS187*BT187","v":1128.5010826533839},null,null,null,{"$f":"'DNSP Inputs O & M'!$G$154*(1+'DNSP Inputs O & M'!$G$11)","v":316.48668183388179},{"$f":"'DNSP Inputs O & M'!$G$162*'DNSP Inputs O & M'!$G$166","v":3.024},null,{"$f":"BZ187*CA187","v":957.05572586565859},null,null,null,{"$f":"'DNSP Inputs O & M'!$G$154*(1+'DNSP Inputs O & M'!$G$11)","v":316.48668183388179},{"$f":"'DNSP Inputs O & M'!$G$163*'DNSP Inputs O & M'!$G$166","v":2.448},null,{"$f":"CG187*CH187","v":774.75939712934257},null,null,null,null,null,{"$f":"'DNSP Inputs O & M'!$H$154","v":301.41588746083977},{"$f":"'DNSP Inputs O & M'!$H$161*'DNSP Inputs O & M'!$H$166","v":3.7439999999999998},null,{"$f":"CP187*CQ187","v":1128.5010826533839},null,null,null,{"$f":"'DNSP Inputs O & M'!$H$154*(1+'DNSP Inputs O & M'!$H$11)","v":316.48668183388179},{"$f":"'DNSP Inputs O & M'!$H$162*'DNSP Inputs O & M'!$H$166","v":3.024},null,{"$f":"CW187*CX187","v":957.05572586565859},null,null,null,{"$f":"'DNSP Inputs O & M'!$H$154*(1+'DNSP Inputs O & M'!$H$11)","v":316.48668183388179},{"$f":"'DNSP Inputs O & M'!$H$163*'DNSP Inputs O & M'!$H$166","v":2.448},null,{"$f":"DD187*DE187","v":774.75939712934257}]
["Miscellaneous",{"$f":"'DNSP Inputs O & M'!$D$156","v":12.497549028146603},{"$f":"'DNSP Inputs O & M'!$D$161*'DNSP Inputs O & M'!$D$167","v":2.4960000000000004},null,{"$f":"B188*C188","v":31.193882374253924},null,null,null,{"$f":"'DNSP Inputs O & M'!$D$156*(1+'DNSP Inputs O & M'!$D$11)","v":13.122426479553933},{"$f":"'DNSP Inputs O & M'!$D$162*'DNSP Inputs O & M'!$D$167","v":2.016},null,{"$f":"I188*J188","v":26.45481178278073},null,null,null,{"$f":"'DNSP Inputs O & M'!$D$156*(1+'DNSP Inputs O & M'!$D$11)","v":13.122426479553933},{"$f":"'DNSP Inputs O & M'!$D$163*'DNSP Inputs O & M'!$D$167","v":1.6320000000000001},null,{"$f":"P188*Q188","v":21.415800014632019},null,null,null,null,null,{"$f":"'DNSP Inputs O & M'!$E$156","v":12.497549028146603},{"$f":"'DNSP Inputs O & M'!$E$161*'DNSP Inputs O & M'!$E$167","v":2.4960000000000004},null,{"$f":"Y188*Z188","v":31.193882374253924},null,null,null,{"$f":"'DNSP Inputs O & M'!$E$156*(1+'DNSP Inputs O & M'!$E$11)","v":13.122426479553933},{"$f":"'DNSP Inputs O & M'!$E$162*'DNSP Inputs O & M'!$E$167","v":2.016},null,{"$f":"AF188*AG188","v":26.45481178278073},null,null,null,{"$f":"'DNSP Inputs O & M'!$E$156*(1+'DNSP Inputs O & M'!$E$11)","v":13.122426479553933},{"$f":"'DNSP Inputs O & M'!$E$163*'DNSP Inputs O & M'!$E$167","v":1.6320000000000001},null,{"$f":"AM188*AN188","v":21.415800014632019},null,null,null,null,null,{"$f":"'DNSP Inputs O & M'!$F$156","v":12.497549028146603},{"$f":"'DNSP Inputs O & M'!$F$161*'DNSP Inputs O & M'!$F$167","v":2.4960000000000004},null,{"$f":"AV188*AW188","v":31.193882374253924},null,null,null,{"$f":"'DNSP Inputs O & M'!$F$156*(1+'DNSP Inputs O & M'!$F$11)","v":13.122426479553933},{"$f":"'DNSP Inputs O & M'!$F$162*'DNSP Inputs O & M'!$F$167","v":2.016},null,{"$f":"BC188*BD188","v":26.45481178278073},null,null,null,{"$f":"'DNSP Inputs O & M'!$F$156*(1+'DNSP Inputs O & M'!$F$11)","v":13.122426479553933},{"$f":"'DNSP Inputs O & M'!$F$163*'DNSP Inputs O & M'!$F$167","v":1.6320000000000001},null,{"$f":"BJ188*BK188","v":21.415800014632019},null,null,null,null,null,{"$f":"'DNSP Inputs O & M'!$G$156","v":12.497549028146603},{"$f":"'DNSP Inputs O & M'!$G$161*'DNSP Inputs O & M'!$G$167","v":2.4960000000000004},null,{"$f":"BS188*BT188","v":31.193882374253924},null,null,null,{"$f":"'DNSP Inputs O & M'!$G$156*(1+'DNSP Inputs O & M'!$G$11)","v":13.122426479553933},{"$f":"'DNSP Inputs O & M'!$G$162*'DNSP Inputs O & M'!$G$167","v":2.016},null,{"$f":"BZ188*CA188","v":26.45481178278073},null,null,null,{"$f":"'DNSP Inputs O & M'!$G$156*(1+'DNSP Inputs O & M'!$G$11)","v":13.122426479553933},{"$f":"'DNSP Inputs O & M'!$G$163*'DNSP Inputs O & M'!$G$167","v":1.6320000000000001},null,{"$f":"CG188*CH188","v":21.415800014632019},null,null,null,null,null,{"$f":"'DNSP Inputs O & M'!$H$156","v":12.497549028146603},{"$f":"'DNSP Inputs O & M'!$H$161*'DNSP Inputs O & M'!$H$167","v":2.4960000000000004},null,{"$f":"CP188*CQ188","v":31.193882374253924},null,null,null,{"$f":"'DNSP Inputs O & M'!$H$156*(1+'DNSP Inputs O & M'!$H$11)","v":13.122426479553933},{"$f":"'DNSP Inputs O & M'!$H$162*'DNSP Inputs O & M'!$H$167","v":2.016},null,{"$f":"CW188*CX188","v":26.45481178278073},null,null,null,{"$f":"'DNSP Inputs O & M'!$H$156*(1+'DNSP Inputs O & M'!$H$11)","v":13.122426479553933},{"$f":"'DNSP Inputs O & M'!$H$163*'DNSP Inputs O & M'!$H$167","v":1.6320000000000001},null,{"$f":"DD188*DE188","v":21.415800014632019}]
["Labour - bulk lamp change"]
["Crew costs",{"$f":"'DNSP Inputs O & M'!$D$12","v":100},{"$f":"'DNSP Inputs O & M'!$D$157","v":2},{"$f":"'DNSP Inputs O & M'!$D$17","v":8},{"$f":"B190*C190*D190","v":1600},{"$f":"E190/'DNSP Inputs O & M'!$D$148*(C181+C182)/C181*0.8","v":480},{"$f":"(F190+F191)/C181","v":7.9668831168831176},null,{"$f":"'DNSP Inputs O & M'!$D$12","v":100},{"$f":"'DNSP Inputs O & M'!$D$157","v":2},{"$f":"'DNSP Inputs O & M'!$D$17","v":8},{"$f":"I190*J190*K190","v":1600},{"$f":"L190/'DNSP Inputs O & M'!$D$148*(J181+J182)/J181*0.8","v":480},{"$f":"(M190+M191)/J181","v":10.06068185665816},null,{"$f":"'DNSP Inputs O & M'!$D$12","v":100},{"$f":"'DNSP Inputs O & M'!$D$157","v":2},{"$f":"'DNSP Inputs O & M'!$D$17","v":8},{"$f":"P190*Q190*R190","v":1600},{"$f":"S190/'DNSP Inputs O & M'!$D$148*(Q181+Q182)/Q181*0.8","v":480},{"$f":"(T190+T191)/Q181","v":12.625169388747494},null,null,null,{"$f":"'DNSP Inputs O & M'!$E$12","v":100.37},{"$f":"'DNSP Inputs O & M'!$E$157","v":2},{"$f":"'DNSP Inputs O & M'!$E$17","v":8},{"$f":"Y190*Z190*AA190","v":1605.92},{"$f":"AB190/'DNSP Inputs O & M'!$E$148*(Z181+Z182)/Z181*0.8","v":481.77600000000007},{"$f":"(AC190+AC191)/Z181","v":7.9909090909090921},null,{"$f":"'DNSP Inputs O & M'!$E$12","v":100.37},{"$f":"'DNSP Inputs O & M'!$E$157","v":2},{"$f":"'DNSP Inputs O & M'!$E$17","v":8},{"$f":"AF190*AG190*AH190","v":1605.92},{"$f":"AI190/'DNSP Inputs O & M'!$E$148*(AG181+AG182)/AG181*0.8","v":481.77600000000007},{"$f":"(AJ190+AJ191)/AG181","v":10.138013856202164},null,{"$f":"'DNSP Inputs O & M'!$E$12","v":100.37},{"$f":"'DNSP Inputs O & M'!$E$157","v":2},{"$f":"'DNSP Inputs O & M'!$E$17","v":8},{"$f":"AM190*AN190*AO190","v":1605.92},{"$f":"AP190/'DNSP Inputs O & M'!$E$148*(AN181+AN182)/AN181*0.8","v":481.77600000000007},{"$f":"(AQ190+AQ191)/AN181","v":12.722213466606638},null,null,null,{"$f":"'DNSP Inputs O & M'!$F$12","v":101.16292300000001},{"$f":"'DNSP Inputs O & M'!$F$157","v":2},{"$f":"'DNSP Inputs O & M'!$F$17","v":8},{"$f":"AV190*AW190*AX190","v":1618.6067680000001},{"$f":"AY190/'DNSP Inputs O & M'!$F$148*(AW181+AW182)/AW181*0.8","v":485.58203040000001},{"$f":"(AZ190+AZ191)/AW181","v":8.0423975974025979},null,{"$f":"'DNSP Inputs O & M'!$F$12","v":101.16292300000001},{"$f":"'DNSP Inputs O & M'!$F$157","v":2},{"$f":"'DNSP Inputs O & M'!$F$17","v":8},{"$f":"BC190*BD190*BE190","v":1618.6067680000001},{"$f":"BF190/'DNSP Inputs O & M'!$F$148*(BD181+BD182)/BD181*0.8","v":485.58203040000012},{"$f":"(BG190+BG191)/BD181","v":10.239804645294901},null,{"$f":"'DNSP Inputs O & M'!$F$12","v":101.16292300000001},{"$f":"'DNSP Inputs O & M'!$F$157","v":2},{"$f":"'DNSP Inputs O & M'!$F$17","v":8},{"$f":"BJ190*BK190*BL190","v":1618.6067680000001},{"$f":"BM190/'DNSP Inputs O & M'!$F$148*(BK181+BK182)/BK181*0.8","v":485.58203040000001},{"$f":"(BN190+BN191)/BK181","v":12.849950927428893},null,null,null,{"$f":"'DNSP Inputs O & M'!$G$12","v":102.13408706080001},{"$f":"'DNSP Inputs O & M'!$G$157","v":2},{"$f":"'DNSP Inputs O & M'!$G$17","v":8},{"$f":"BS190*BT190*BU190","v":1634.1453929728002},{"$f":"BV190/'DNSP Inputs O & M'!$G$148*(BT181+BT182)/BT181*0.8","v":490.24361789184007},{"$f":"(BW190+BW191)/BT181","v":8.1054601987532475},null,{"$f":"'DNSP Inputs O & M'!$G$12","v":102.13408706080001},{"$f":"'DNSP Inputs O & M'!$G$157","v":2},{"$f":"'DNSP Inputs O & M'!$G$17","v":8},{"$f":"BZ190*CA190*CB190","v":1634.1453929728002},{"$f":"CC190/'DNSP Inputs O & M'!$G$148*(CA181+CA182)/CA181*0.8","v":490.24361789184007},{"$f":"(CD190+CD191)/CA181","v":10.355756313794599},null,{"$f":"'DNSP Inputs O & M'!$G$12","v":102.13408706080001},{"$f":"'DNSP Inputs O & M'!$G$157","v":2},{"$f":"'DNSP Inputs O & M'!$G$17","v":8},{"$f":"CG190*CH190*CI190","v":1634.1453929728002},{"$f":"CJ190/'DNSP Inputs O & M'!$G$148*(CH181+CH182)/CH181*0.8","v":490.24361789184007},{"$f":"(CK190+CK191)/CH181","v":12.995458903585378},null,null,null,{"$f":"'DNSP Inputs O & M'!$H$12","v":103.17585474882017},{"$f":"'DNSP Inputs O & M'!$H$157","v":2},{"$f":"'DNSP Inputs O & M'!$H$17","v":8},{"$f":"CP190*CQ190*CR190","v":1650.8136759811227},{"$f":"CS190/'DNSP Inputs O & M'!$H$148*(CQ181+CQ182)/CQ181*0.8","v":495.24410279433681},{"$f":"(CT190+CT191)/CQ181","v":8.1731074512220889},null,{"$f":"'DNSP Inputs O & M'!$H$12","v":103.17585474882017},{"$f":"'DNSP Inputs O & M'!$H$157","v":2},{"$f":"'DNSP Inputs O & M'!$H$17","v":8},{"$f":"CW190*CX190*CY190","v":1650.8136759811227},{"$f":"CZ190/'DNSP Inputs O & M'!$H$148*(CX181+CX182)/CX181*0.8","v":495.24410279433687},{"$f":"(DA190+DA191)/CX181","v":10.478606305885927},null,{"$f":"'DNSP Inputs O & M'!$H$12","v":103.17585474882017},{"$f":"'DNSP Inputs O & M'!$H$157","v":2},{"$f":"'DNSP Inputs O & M'!$H$17","v":8},{"$f":"DD190*DE190*DF190","v":1650.8136759811227},{"$f":"DG190/'DNSP Inputs O & M'!$H$148*(DE181+DE182)/DE181*0.8","v":495.24410279433681},{"$f":"(DH190+DH191)/DE181","v":13.149623599543121}]
["Elevated platform vehicle costs",{"$f":"'DNSP Inputs O & M'!$D$14","v":45.38},1,{"$f":"'DNSP Inputs O & M'!$D$17","v":8},{"$f":"B191*C191*D191","v":363.04},{"$f":"E191/'DNSP Inputs O & M'!$D$148*(C181+C182)/C181*0.8","v":108.91200000000002},null,null,{"$f":"'DNSP Inputs O & M'!$D$15","v":57.553455530448915},1,{"$f":"'DNSP Inputs O & M'!$D$17","v":8},{"$f":"I191*J191*K191","v":460.42764424359132},{"$f":"L191/'DNSP Inputs O & M'!$D$148*(J181+J182)/J181*0.8","v":138.12829327307739},null,null,{"$f":"'DNSP Inputs O & M'!$D$15","v":57.553455530448915},1,{"$f":"'DNSP Inputs O & M'!$D$17","v":8},{"$f":"P191*Q191*R191","v":460.42764424359132},{"$f":"S191/'DNSP Inputs O & M'!$D$148*(Q181+Q182)/Q181*0.8","v":138.12829327307739},null,null,null,null,{"$f":"'DNSP Inputs O & M'!$E$14","v":45.38},1,{"$f":"'DNSP Inputs O & M'!$E$17","v":8},{"$f":"Y191*Z191*AA191","v":363.04},{"$f":"AB191/'DNSP Inputs O & M'!$E$148*(Z181+Z182)/Z181*0.8","v":108.91200000000002},null,null,{"$f":"'DNSP Inputs O & M'!$E$15","v":58.793154718775355},1,{"$f":"'DNSP Inputs O & M'!$E$17","v":8},{"$f":"AF191*AG191*AH191","v":470.34523775020284},{"$f":"AI191/'DNSP Inputs O & M'!$E$148*(AG181+AG182)/AG181*0.8","v":141.10357132506087},null,null,{"$f":"'DNSP Inputs O & M'!$E$15","v":58.793154718775355},1,{"$f":"'DNSP Inputs O & M'!$E$17","v":8},{"$f":"AM191*AN191*AO191","v":470.34523775020284},{"$f":"AP191/'DNSP Inputs O & M'!$E$148*(AN181+AN182)/AN181*0.8","v":141.10357132506087},null,null,null,null,{"$f":"'DNSP Inputs O & M'!$F$14","v":45.38},1,{"$f":"'DNSP Inputs O & M'!$F$17","v":8},{"$f":"AV191*AW191*AX191","v":363.04},{"$f":"AY191/'DNSP Inputs O & M'!$F$148*(AW181+AW182)/AW181*0.8","v":108.91200000000002},null,null,{"$f":"'DNSP Inputs O & M'!$F$15","v":59.813152919549431},1,{"$f":"'DNSP Inputs O & M'!$F$17","v":8},{"$f":"BC191*BD191*BE191","v":478.50522335639545},{"$f":"BF191/'DNSP Inputs O & M'!$F$148*(BD181+BD182)/BD181*0.8","v":143.55156700691862},null,null,{"$f":"'DNSP Inputs O & M'!$F$15","v":59.813152919549431},1,{"$f":"'DNSP Inputs O & M'!$F$17","v":8},{"$f":"BJ191*BK191*BL191","v":478.50522335639545},{"$f":"BM191/'DNSP Inputs O & M'!$F$148*(BK181+BK182)/BK181*0.8","v":143.55156700691865},null,null,null,null,{"$f":"'DNSP Inputs O & M'!$G$14","v":45.38},1,{"$f":"'DNSP Inputs O & M'!$G$17","v":8},{"$f":"BS191*BT191*BU191","v":363.04},{"$f":"BV191/'DNSP Inputs O & M'!$G$148*(BT181+BT182)/BT181*0.8","v":108.91200000000002},null,null,{"$f":"'DNSP Inputs O & M'!$G$15","v":60.839187511541702},1,{"$f":"'DNSP Inputs O & M'!$G$17","v":8},{"$f":"BZ191*CA191*CB191","v":486.71350009233362},{"$f":"CC191/'DNSP Inputs O & M'!$G$148*(CA181+CA182)/CA181*0.8","v":146.01405002770011},null,null,{"$f":"'DNSP Inputs O & M'!$G$15","v":60.839187511541702},1,{"$f":"'DNSP Inputs O & M'!$G$17","v":8},{"$f":"CG191*CH191*CI191","v":486.71350009233362},{"$f":"CJ191/'DNSP Inputs O & M'!$G$148*(CH181+CH182)/CH181*0.8","v":146.01405002770008},null,null,null,null,{"$f":"'DNSP Inputs O & M'!$H$14","v":45.38},1,{"$f":"'DNSP Inputs O & M'!$H$17","v":8},{"$f":"CP191*CQ191*CR191","v":363.04},{"$f":"CS191/'DNSP Inputs O & M'!$H$148*(CQ181+CQ182)/CQ181*0.8","v":108.91200000000002},null,null,{"$f":"'DNSP Inputs O & M'!$H$15","v":61.900611933039357},1,{"$f":"'DNSP Inputs O & M'!$H$17","v":8},{"$f":"CW191*CX191*CY191","v":495.20489546431486},{"$f":"CZ191/'DNSP Inputs O & M'!$H$148*(CX181+CX182)/CX181*0.8","v":148.56146863929447},null,null,{"$f":"'DNSP Inputs O & M'!$H$15","v":61.900611933039357},1,{"$f":"'DNSP Inputs O & M'!$H$17","v":8},{"$f":"DD191*DE191*DF191","v":495.20489546431486},{"$f":"DG191/'DNSP Inputs O & M'!$H$148*(DE181+DE182)/DE181*0.8","v":148.56146863929447}]
["Labour - repair of faults"]
["Crew costs",{"$f":"'DNSP Inputs O & M'!$D$12","v":100},{"$f":"'DNSP Inputs O & M'!$D$157","v":2},{"$f":"'DNSP Inputs O & M'!$D$17","v":8},{"$f":"B193*C193*D193","v":1600},{"$f":"(E193+E194)/'DNSP Inputs O & M'!$D$161","v":78.647435897435898},{"$f":"F193*D170","v":2.241451923076923},null,{"$f":"'DNSP Inputs O & M'!$D$12","v":100},{"$f":"'DNSP Inputs O & M'!$D$157","v":2},{"$f":"'DNSP Inputs O & M'!$D$17","v":8},{"$f":"I193*J193*K193","v":1600},{"$f":"(L193+L194)/'DNSP Inputs O & M'!$D$162","v":102.20375219462258},{"$f":"M193*D170","v":2.9128069375467436},null,{"$f":"'DNSP Inputs O & M'!$D$12","v":100},{"$f":"'DNSP Inputs O & M'!$D$157","v":2},{"$f":"'DNSP Inputs O & M'!$D$17","v":8},{"$f":"P193*Q193*R193","v":1600},{"$f":"(S193+S194)/'DNSP Inputs O & M'!$D$163","v":126.25169388747494},{"$f":"T193*D170","v":3.598173275793036},null,null,null,{"$f":"'DNSP Inputs O & M'!$E$12","v":100.37},{"$f":"'DNSP Inputs O & M'!$E$157","v":2},{"$f":"'DNSP Inputs O & M'!$E$17","v":8},{"$f":"Y193*Z193*AA193","v":1605.92},{"$f":"(AB193+AB194)/'DNSP Inputs O & M'!$E$161","v":78.884615384615387},{"$f":"AC193*AA170","v":2.2482115384615384},null,{"$f":"'DNSP Inputs O & M'!$E$12","v":100.37},{"$f":"'DNSP Inputs O & M'!$E$157","v":2},{"$f":"'DNSP Inputs O & M'!$E$17","v":8},{"$f":"AF193*AG193*AH193","v":1605.92},{"$f":"(AI193+AI194)/'DNSP Inputs O & M'!$E$162","v":102.98934711062513},{"$f":"AJ193*AA170","v":2.9351963926528164},null,{"$f":"'DNSP Inputs O & M'!$E$12","v":100.37},{"$f":"'DNSP Inputs O & M'!$E$157","v":2},{"$f":"'DNSP Inputs O & M'!$E$17","v":8},{"$f":"AM193*AN193*AO193","v":1605.92},{"$f":"(AP193+AP194)/'DNSP Inputs O & M'!$E$163","v":127.22213466606634},{"$f":"AQ193*AA170","v":3.6258308379828907},null,null,null,{"$f":"'DNSP Inputs O & M'!$F$12","v":101.16292300000001},{"$f":"'DNSP Inputs O & M'!$F$157","v":2},{"$f":"'DNSP Inputs O & M'!$F$17","v":8},{"$f":"AV193*AW193*AX193","v":1618.6067680000001},{"$f":"(AY193+AY194)/'DNSP Inputs O & M'!$F$161","v":79.392899358974361},{"$f":"AZ193*AX170","v":2.2626976317307692},null,{"$f":"'DNSP Inputs O & M'!$F$12","v":101.16292300000001},{"$f":"'DNSP Inputs O & M'!$F$157","v":2},{"$f":"'DNSP Inputs O & M'!$F$17","v":8},{"$f":"BC193*BD193*BE193","v":1618.6067680000001},{"$f":"(BF193+BF194)/'DNSP Inputs O & M'!$F$162","v":104.02341226966249},{"$f":"BG193*AX170","v":2.9646672496853808},null,{"$f":"'DNSP Inputs O & M'!$F$12","v":101.16292300000001},{"$f":"'DNSP Inputs O & M'!$F$157","v":2},{"$f":"'DNSP Inputs O & M'!$F$17","v":8},{"$f":"BJ193*BK193*BL193","v":1618.6067680000001},{"$f":"(BM193+BM194)/'DNSP Inputs O & M'!$F$163","v":128.49950927428895},{"$f":"BN193*AX170","v":3.6622360143172354},null,null,null,{"$f":"'DNSP Inputs O & M'!$G$12","v":102.13408706080001},{"$f":"'DNSP Inputs O & M'!$G$157","v":2},{"$f":"'DNSP Inputs O & M'!$G$17","v":8},{"$f":"BS193*BT193*BU193","v":1634.1453929728002},{"$f":"(BV193+BV194)/'DNSP Inputs O & M'!$G$161","v":80.015440423589752},{"$f":"BW193*BU170","v":2.2804400520723078},null,{"$f":"'DNSP Inputs O & M'!$G$12","v":102.13408706080001},{"$f":"'DNSP Inputs O & M'!$G$157","v":2},{"$f":"'DNSP Inputs O & M'!$G$17","v":8},{"$f":"BZ193*CA193*CB193","v":1634.1453929728002},{"$f":"(CC193+CC194)/'DNSP Inputs O & M'!$G$162","v":105.20133398140545},{"$f":"CD193*BU170","v":2.9982380184700554},null,{"$f":"'DNSP Inputs O & M'!$G$12","v":102.13408706080001},{"$f":"'DNSP Inputs O & M'!$G$157","v":2},{"$f":"'DNSP Inputs O & M'!$G$17","v":8},{"$f":"CG193*CH193*CI193","v":1634.1453929728002},{"$f":"(CJ193+CJ194)/'DNSP Inputs O & M'!$G$163","v":129.95458903585379},{"$f":"CK193*BU170","v":3.7037057875218329},null,null,null,{"$f":"'DNSP Inputs O & M'!$H$12","v":103.17585474882017},{"$f":"'DNSP Inputs O & M'!$H$157","v":2},{"$f":"'DNSP Inputs O & M'!$H$17","v":8},{"$f":"CP193*CQ193*CR193","v":1650.8136759811227},{"$f":"(CS193+CS194)/'DNSP Inputs O & M'!$H$161","v":80.683240223602667},{"$f":"CT193*CR170","v":2.2994723463726761},null,{"$f":"'DNSP Inputs O & M'!$H$12","v":103.17585474882017},{"$f":"'DNSP Inputs O & M'!$H$157","v":2},{"$f":"'DNSP Inputs O & M'!$H$17","v":8},{"$f":"CW193*CX193*CY193","v":1650.8136759811227},{"$f":"(CZ193+CZ194)/'DNSP Inputs O & M'!$H$162","v":106.44933390106335},{"$f":"DA193*CR170","v":3.0338060161803058},null,{"$f":"'DNSP Inputs O & M'!$H$12","v":103.17585474882017},{"$f":"'DNSP Inputs O & M'!$H$157","v":2},{"$f":"'DNSP Inputs O & M'!$H$17","v":8},{"$f":"DD193*DE193*DF193","v":1650.8136759811227},{"$f":"(DG193+DG194)/'DNSP Inputs O & M'!$H$163","v":131.49623599543122},{"$f":"DH193*CR170","v":3.74764272586979}]
["Elevated platform vehicle costs",{"$f":"'DNSP Inputs O & M'!$D$14","v":45.38},1,{"$f":"'DNSP Inputs O & M'!$D$17","v":8},{"$f":"B194*C194*D194","v":363.04},null,null,null,{"$f":"'DNSP Inputs O & M'!$D$15","v":57.553455530448915},1,{"$f":"'DNSP Inputs O & M'!$D$17","v":8},{"$f":"I194*J194*K194","v":460.42764424359132},null,null,null,{"$f":"'DNSP Inputs O & M'!$D$15","v":57.553455530448915},1,{"$f":"'DNSP Inputs O & M'!$D$17","v":8},{"$f":"P194*Q194*R194","v":460.42764424359132},null,null,null,null,null,{"$f":"'DNSP Inputs O & M'!$E$14","v":45.38},1,{"$f":"'DNSP Inputs O & M'!$E$17","v":8},{"$f":"Y194*Z194*AA194","v":363.04},null,null,null,{"$f":"'DNSP Inputs O & M'!$E$15","v":58.793154718775355},1,{"$f":"'DNSP Inputs O & M'!$E$17","v":8},{"$f":"AF194*AG194*AH194","v":470.34523775020284},null,null,null,{"$f":"'DNSP Inputs O & M'!$E$15","v":58.793154718775355},1,{"$f":"'DNSP Inputs O & M'!$E$17","v":8},{"$f":"AM194*AN194*AO194","v":470.34523775020284},null,null,null,null,null,{"$f":"'DNSP Inputs O & M'!$F$14","v":45.38},1,{"$f":"'DNSP Inputs O & M'!$F$17","v":8},{"$f":"AV194*AW194*AX194","v":363.04},null,null,null,{"$f":"'DNSP Inputs O & M'!$F$15","v":59.813152919549431},1,{"$f":"'DNSP Inputs O & M'!$F$17","v":8},{"$f":"BC194*BD194*BE194","v":478.50522335639545},null,null,null,{"$f":"'DNSP Inputs O & M'!$F$15","v":59.813152919549431},1,{"$f":"'DNSP Inputs O & M'!$F$17","v":8},{"$f":"BJ194*BK194*BL194","v":478.50522335639545},null,null,null,null,null,{"$f":"'DNSP Inputs O & M'!$G$14","v":45.38},1,{"$f":"'DNSP Inputs O & M'!$G$17","v":8},{"$f":"BS194*BT194*BU194","v":363.04},null,null,null,{"$f":"'DNSP Inputs O & M'!$G$15","v":60.839187511541702},1,{"$f":"'DNSP Inputs O & M'!$G$17","v":8},{"$f":"BZ194*CA194*CB194","v":486.71350009233362},null,null,null,{"$f":"'DNSP Inputs O & M'!$G$15","v":60.839187511541702},1,{"$f":"'DNSP Inputs O & M'!$G$17","v":8},{"$f":"CG194*CH194*CI194","v":486.71350009233362},null,null,null,null,null,{"$f":"'DNSP Inputs O & M'!$H$14","v":45.38},1,{"$f":"'DNSP Inputs O & M'!$H$17","v":8},{"$f":"CP194*CQ194*CR194","v":363.04},null,null,null,{"$f":"'DNSP Inputs O & M'!$H$15","v":61.900611933039357},1,{"$f":"'DNSP Inputs O & M'!$H$17","v":8},{"$f":"CW194*CX194*CY194","v":495.20489546431486},null,null,null,{"$f":"'DNSP Inputs O & M'!$H$15","v":61.900611933039357},1,{"$f":"'DNSP Inputs O & M'!$H$17","v":8},{"$f":"DD194*DE194*DF194","v":495.20489546431486}]
["Other Maintenance and Repair costs",null,null,null,null,null,{"$f":"'DNSP Inputs O & M'!$D$174","v":0.98745233212525763},null,null,null,null,null,null,{"$f":"'DNSP Inputs O & M'!$D$174","v":0.98745233212525763},null,null,null,null,null,null,{"$f":"'DNSP Inputs O & M'!$D$174","v":0.98745233212525763},null,null,null,null,null,null,null,null,{"$f":"'DNSP Inputs O & M'!$E$174","v":0.97035749939499871},null,null,null,null,null,null,{"$f":"'DNSP Inputs O & M'!$E$174","v":0.97035749939499871},null,null,null,null,null,null,{"$f":"'DNSP Inputs O & M'!$E$174","v":0.97035749939499871},null,null,null,null,null,null,null,null,{"$f":"'DNSP Inputs O & M'!$F$174","v":0.97350703152523399},null,null,null,null,null,null,{"$f":"'DNSP Inputs O & M'!$F$174","v":0.97350703152523399},null,null,null,null,null,null,{"$f":"'DNSP Inputs O & M'!$F$174","v":0.97350703152523399},null,null,null,null,null,null,null,null,{"$f":"'DNSP Inputs O & M'!$G$174","v":0.97202759495963631},null,null,null,null,null,null,{"$f":"'DNSP Inputs O & M'!$G$174","v":0.97202759495963631},null,null,null,null,null,null,{"$f":"'DNSP Inputs O & M'!$G$174","v":0.97202759495963631},null,null,null,null,null,null,null,null,{"$f":"'DNSP Inputs O & M'!$H$174","v":0.96664101180928086},null,null,null,null,null,null,{"$f":"'DNSP Inputs O & M'!$H$174","v":0.96664101180928086},null,null,null,null,null,null,{"$f":"'DNSP Inputs O & M'!$H$174","v":0.96664101180928086}]
[]
["Overheads",{"$f":"'DNSP Inputs O & M'!$D$18","v":0.25},null,null,null,null,{"$f":"B197*SUM(G181:G195)","v":4.3224666498526876},null,{"$f":"'DNSP Inputs O & M'!$D$18","v":0.25},null,null,null,null,{"$f":"I197*SUM(N181:N195)","v":5.0899310787554715},null,{"$f":"'DNSP Inputs O & M'!$D$18","v":0.25},null,null,null,null,{"$f":"P197*SUM(U181:U195)","v":5.9023945463393783},null,null,null,{"$f":"'DNSP Inputs O & M'!$E$18","v":0.25},null,null,null,null,{"$f":"Y197*SUM(AD181:AD195)","v":4.3258893390227708},null,{"$f":"'DNSP Inputs O & M'!$E$18","v":0.25},null,null,null,null,{"$f":"AF197*SUM(AK181:AK195)","v":5.110587734235426},null,{"$f":"'DNSP Inputs O & M'!$E$18","v":0.25},null,null,null,null,{"$f":"AM197*SUM(AR181:AR195)","v":5.929296248169063},null,null,null,{"$f":"'DNSP Inputs O & M'!$F$18","v":0.25},null,null,null,null,{"$f":"AV197*SUM(BA181:BA195)","v":4.3431703719960133},null,{"$f":"'DNSP Inputs O & M'!$F$18","v":0.25},null,null,null,null,{"$f":"BC197*SUM(BH181:BH195)","v":5.1441905287993102},null,{"$f":"'DNSP Inputs O & M'!$F$18","v":0.25},null,null,null,null,{"$f":"BJ197*SUM(BO181:BO195)","v":5.9711192904907717},null,null,null,{"$f":"'DNSP Inputs O & M'!$G$18","v":0.25},null,null,null,null,{"$f":"BS197*SUM(BX181:BX195)","v":4.3630017682776616},null,{"$f":"'DNSP Inputs O & M'!$G$18","v":0.25},null,null,null,null,{"$f":"BZ197*SUM(CE181:CE195)","v":5.1812012789790041},null,{"$f":"'DNSP Inputs O & M'!$G$18","v":0.25},null,null,null,null,{"$f":"CG197*SUM(CL181:CL195)","v":6.0174938686896438},null,null,null,{"$f":"'DNSP Inputs O & M'!$H$18","v":0.25},null,null,null,null,{"$f":"CP197*SUM(CU181:CU195)","v":4.3833250091823741},null,{"$f":"'DNSP Inputs O & M'!$H$18","v":0.25},null,null,null,null,{"$f":"CW197*SUM(DB181:DB195)","v":5.2194591306418099},null,{"$f":"'DNSP Inputs O & M'!$H$18","v":0.25},null,null,null,null,{"$f":"DD197*SUM(DI181:DI195)","v":6.0656726314784777}]
[]
[null,null,null,null,null,null,{"$f":"SUM(G181,G185,G190,G193,G195,G197)","v":21.612333249263436},null,null,null,null,null,null,{"$f":"SUM(N181,N185,N190,N193,N195,N197)","v":25.449655393777356},null,null,null,null,null,null,{"$f":"SUM(U181,U185,U190,U193,U195,U197)","v":29.511972731696893},null,null,null,null,null,null,null,null,{"$f":"SUM(AD181,AD185,AD190,AD193,AD195,AD197)","v":21.629446695113856},null,null,null,null,null,null,{"$f":"SUM(AK181,AK185,AK190,AK193,AK195,AK197)","v":25.552938671177131},null,null,null,null,null,null,{"$f":"SUM(AR181,AR185,AR190,AR193,AR195,AR197)","v":29.646481240845315},null,null,null,null,null,null,null,null,{"$f":"SUM(BA181,BA185,BA190,BA193,BA195,BA197)","v":21.715851859980067},null,null,null,null,null,null,{"$f":"SUM(BH181,BH185,BH190,BH193,BH195,BH197)","v":25.720952643996551},null,null,null,null,null,null,{"$f":"SUM(BO181,BO185,BO190,BO193,BO195,BO197)","v":29.85559645245386},null,null,null,null,null,null,null,null,{"$f":"SUM(BX181,BX185,BX190,BX193,BX195,BX197)","v":21.815008841388309},null,null,null,null,null,null,{"$f":"SUM(CE181,CE185,CE190,CE193,CE195,CE197)","v":25.906006394895019},null,null,null,null,null,null,{"$f":"SUM(CL181,CL185,CL190,CL193,CL195,CL197)","v":30.08746934344822},null,null,null,null,null,null,null,null,{"$f":"SUM(CU181,CU185,CU190,CU193,CU195,CU197)","v":21.916625045911871},null,null,null,null,null,null,{"$f":"SUM(DB181,DB185,DB190,DB193,DB195,DB197)","v":26.097295653209049},null,null,null,null,null,null,{"$f":"SUM(DI181,DI185,DI190,DI193,DI195,DI197)","v":30.328363157392388}]
[]
[]
[]
[]
["Category P LED 18 Watt - Cost build-up"]
[]
["Additional assumptions"]
["Proportion of luminaire that will fail before bulk change",null,null,{"$f":"'DNSP Inputs O & M'!$D$189","v":0.114},null,null,null,null,null,null,null,null,null,null,null,null,null,null,null,null,null,null,null,null,null,null,{"$f":"'DNSP Inputs O & M'!$E$189","v":0.114},null,null,null,null,null,null,null,null,null,null,null,null,null,null,null,null,null,null,null,null,null,null,{"$f":"'DNSP Inputs O & M'!$F$189","v":0.114},null,null,null,null,null,null,null,null,null,null,null,null,null,null,null,null,null,null,null,null,null,null,{"$f":"'DNSP Inputs O & M'!$G$189","v":0.114},null,null,null,null,null,null,null,null,null,null,null,null,null,null,null,null,null,null,null,null,null,null,{"$f":"'DNSP Inputs O & M'!$H$189","v":0.114}]
["Proportion of lamps that will fail before bulk change (per year)",null,null,{"$f":"D207/'DNSP Inputs O & M'!$D$187","v":5.7000000000000002E-3},null,null,null,null,null,null,null,null,null,null,null,null,null,null,null,null,null,null,null,null,null,null,{"$f":"AA207/'DNSP Inputs O & M'!$E$187","v":5.7000000000000002E-3},null,null,null,null,null,null,null,null,null,null,null,null,null,null,null,null,null,null,null,null,null,null,{"$f":"AX207/'DNSP Inputs O & M'!$F$187","v":5.7000000000000002E-3},null,null,null,null,null,null,null,null,null,null,null,null,null,null,null,null,null,null,null,null,null,null,{"$f":"BU207/'DNSP Inputs O & M'!$G$187","v":5.7000000000000002E-3},null,null,null,null,null,null,null,null,null,null,null,null,null,null,null,null,null,null,null,null,null,null,{"$f":"CR207/'DNSP Inputs O & M'!$H$187","v":5.7000000000000002E-3}]
["Overheads are applied to material and labour components"]
["All costs and charges are exclusive of GST"]
[]
[null,"Urban",null,null,null,null,null,null,"Rural",null,null,null,null,null,null,"Remote",null,null,null,null,null,null,null,null,"Urban",null,null,null,null,null,null,"Rural",null,null,null,null,null,null,"Remote",null,null,null,null,null,null,null,null,"Urban",null,null,null,null,null,null,"Rural",null,null,null,null,null,null,"Remote",null,null,null,null,null,null,null,null,"Urban",null,null,null,null,null,null,"Rural",null,null,null,null,null,null,"Remote",null,null,null,null,null,null,null,null,"Urban",null,null,null,null,null,null,"Rural",null,null,null,null,null,null,"Remote"]
[]
[null,"Unit rate","Number","Hours","Cost","Annualised","Annualised",null,"Unit rate","Number","Hours","Cost","Annualised","Annualised",null,"Unit rate","Number","Hours","Cost","Annualised","Annualised",null,null,null,"Unit rate","Number","Hours","Cost","Annualised","Annualised",null,"Unit rate","Number","Hours","Cost","Annualised","Annualised",null,"Unit rate","Number","Hours","Cost","Annualised","Annualised",null,null,null,"Unit rate","Number","Hours","Cost","Annualised","Annualised",null,"Unit rate","Number","Hours","Cost","Annualised","Annualised",null,"Unit rate","Number","Hours","Cost","Annualised","Annualised",null,null,null,"Unit rate","Number","Hours","Cost","Annualised","Annualised",null,"Unit rate","Number","Hours","Cost","Annualised","Annualised",null,"Unit rate","Number","Hours","Cost","Annualised","Annualised",null,null,null,"Unit rate","Number","Hours","Cost","Annualised","Annualised",null,"Unit rate","Number","Hours","Cost","Annualised","Annualised",null,"Unit rate","Number","Hours","Cost","Annualised","Annualised"]
[null,null,null,null,null," cost","unit cost",null,null,null,null,null," cost","unit cost",null,null,null,null,null," cost","unit cost",null,null,null,null,null,null,null," cost","unit cost",null,null,null,null,null," cost","unit cost",null,null,null,null,null," cost","unit cost",null,null,null,null,null,null,null," cost","unit cost",null,null,null,null,null," cost","unit cost",null,null,null,null,null," cost","unit cost",null,null,null,null,null,null,null," cost","unit cost",null,null,null,null,null," cost","unit cost",null,null,null,null,null," cost","unit cost",null,null,null,null,null,null,null," cost","unit cost",null,null,null,null,null," cost","unit cost",null,null,null,null,null," cost","unit cost"]
["Category P LED 18 Watt"]
["Bulk change & repairs"]
["Materials - bulk PE cell change"]
["PE cell",{"$f":"'DNSP Inputs O & M'!$D$190","v":16.871691187997911},{"$f":"'DNSP Inputs O & M'!$D$194","v":73.92},null,{"$f":"B219*C219","v":1247.1554126168055},{"$f":"E219/'DNSP Inputs O & M'!$D$188","v":155.89442657710069},{"$f":"IFERROR(F219/C219,0)","v":2.1089613984997388},null,{"$f":"'DNSP Inputs O & M'!$D$190*(1+'DNSP Inputs O & M'!$D$11)","v":17.715275747397808},{"$f":"'DNSP Inputs O & M'!$D$195","v":61.44},null,{"$f":"I219*J219","v":1088.4265419201213},{"$f":"L219/'DNSP Inputs O & M'!$D$188","v":136.05331774001516},{"$f":"IFERROR(M219/J219,0)","v":2.214409468424726},null,{"$f":"'DNSP Inputs O & M'!$D$190*(1+'DNSP Inputs O & M'!$D$11)","v":17.715275747397808},{"$f":"'DNSP Inputs O & M'!$D$196","v":48.96},null,{"$f":"P219*Q219","v":867.33990059259668},{"$f":"S219/'DNSP Inputs O & M'!$D$188","v":108.41748757407458},{"$f":"IFERROR(T219/Q219,0)","v":2.214409468424726},null,null,null,{"$f":"'DNSP Inputs O & M'!$E$190","v":16.871691187997911},{"$f":"'DNSP Inputs O & M'!$E$194","v":73.92},null,{"$f":"Y219*Z219","v":1247.1554126168055},{"$f":"AB219/'DNSP Inputs O & M'!$E$188","v":155.89442657710069},{"$f":"IFERROR(AC219/Z219,0)","v":2.1089613984997388},null,{"$f":"'DNSP Inputs O & M'!$E$190*(1+'DNSP Inputs O & M'!$E$11)","v":17.715275747397808},{"$f":"'DNSP Inputs O & M'!$E$195","v":61.44},null,{"$f":"AF219*AG219","v":1088.4265419201213},{"$f":"AI219/'DNSP Inputs O & M'!$E$188","v":136.05331774001516},{"$f":"IFERROR(AJ219/AG219,0)","v":2.214409468424726},null,{"$f":"'DNSP Inputs O & M'!$E$190*(1+'DNSP Inputs O & M'!$E$11)","v":17.715275747397808},{"$f":"'DNSP Inputs O & M'!$E$196","v":48.96},null,{"$f":"AM219*AN219","v":867.33990059259668},{"$f":"AP219/'DNSP Inputs O & M'!$E$188","v":108.41748757407458},{"$f":"IFERROR(AQ219/AN219,0)","v":2.214409468424726},null,null,null,{"$f":"'DNSP Inputs O & M'!$F$190","v":16.871691187997911},{"$f":"'DNSP Inputs O & M'!$F$194","v":73.92},null,{"$f":"AV219*AW219","v":1247.1554126168055},{"$f":"AY219/'DNSP Inputs O & M'!$F$188","v":155.89442657710069},{"$f":"IFERROR(AZ219/AW219,0)","v":2.1089613984997388},null,{"$f":"'DNSP Inputs O & M'!$F$190*(1+'DNSP Inputs O & M'!$F$11)","v":17.715275747397808},{"$f":"'DNSP Inputs O & M'!$F$195","v":61.44},null,{"$f":"BC219*BD219","v":1088.4265419201213},{"$f":"BF219/'DNSP Inputs O & M'!$F$188","v":136.05331774001516},{"$f":"IFERROR(BG219/BD219,0)","v":2.214409468424726},null,{"$f":"'DNSP Inputs O & M'!$F$190*(1+'DNSP Inputs O & M'!$F$11)","v":17.715275747397808},{"$f":"'DNSP Inputs O & M'!$F$196","v":48.96},null,{"$f":"BJ219*BK219","v":867.33990059259668},{"$f":"BM219/'DNSP Inputs O & M'!$F$188","v":108.41748757407458},{"$f":"IFERROR(BN219/BK219,0)","v":2.214409468424726},null,null,null,{"$f":"'DNSP Inputs O & M'!$G$190","v":16.871691187997911},{"$f":"'DNSP Inputs O & M'!$G$194","v":73.92},null,{"$f":"BS219*BT219","v":1247.1554126168055},{"$f":"BV219/'DNSP Inputs O & M'!$G$188","v":155.89442657710069},{"$f":"IFERROR(BW219/BT219,0)","v":2.1089613984997388},null,{"$f":"'DNSP Inputs O & M'!$G$190*(1+'DNSP Inputs O & M'!$G$11)","v":17.715275747397808},{"$f":"'DNSP Inputs O & M'!$G$195","v":61.44},null,{"$f":"BZ219*CA219","v":1088.4265419201213},{"$f":"CC219/'DNSP Inputs O & M'!$G$188","v":136.05331774001516},{"$f":"IFERROR(CD219/CA219,0)","v":2.214409468424726},null,{"$f":"'DNSP Inputs O & M'!$G$190*(1+'DNSP Inputs O & M'!$G$11)","v":17.715275747397808},{"$f":"'DNSP Inputs O & M'!$G$196","v":48.96},null,{"$f":"CG219*CH219","v":867.33990059259668},{"$f":"CJ219/'DNSP Inputs O & M'!$G$188","v":108.41748757407458},{"$f":"IFERROR(CK219/CH219,0)","v":2.214409468424726},null,null,null,{"$f":"'DNSP Inputs O & M'!$H$190","v":16.871691187997911},{"$f":"'DNSP Inputs O & M'!$H$194","v":73.92},null,{"$f":"CP219*CQ219","v":1247.1554126168055},{"$f":"CS219/'DNSP Inputs O & M'!$H$188","v":155.89442657710069},{"$f":"IFERROR(CT219/CQ219,0)","v":2.1089613984997388},null,{"$f":"'DNSP Inputs O & M'!$H$190*(1+'DNSP Inputs O & M'!$H$11)","v":17.715275747397808},{"$f":"'DNSP Inputs O & M'!$H$195","v":61.44},null,{"$f":"CW219*CX219","v":1088.4265419201213},{"$f":"CZ219/'DNSP Inputs O & M'!$H$188","v":136.05331774001516},{"$f":"IFERROR(DA219/CX219,0)","v":2.214409468424726},null,{"$f":"'DNSP Inputs O & M'!$H$190*(1+'DNSP Inputs O & M'!$H$11)","v":17.715275747397808},{"$f":"'DNSP Inputs O & M'!$H$196","v":48.96},null,{"$f":"DD219*DE219","v":867.33990059259668},{"$f":"DG219/'DNSP Inputs O & M'!$H$188","v":108.41748757407458},{"$f":"IFERROR(DH219/DE219,0)","v":2.214409468424726}]
["Materials - repair of faults"]
["PE cell",{"$f":"'DNSP Inputs O & M'!$D$190","v":16.871691187997911},{"$f":"'DNSP Inputs O & M'!$D$197*'DNSP Inputs O & M'!$D$200","v":12.48},null,{"$f":"B221*C221","v":210.55870602621394},{"$f":"(E221+E222+E223)/'DNSP Inputs O & M'!$D$197","v":62.59491323492491},{"$f":"F221*D208","v":0.356791005439072},null,{"$f":"'DNSP Inputs O & M'!$D$190*(1+'DNSP Inputs O & M'!$D$11)","v":17.715275747397808},{"$f":"'DNSP Inputs O & M'!$D$198*'DNSP Inputs O & M'!$D$200","v":10.08},null,{"$f":"I221*J221","v":178.5699795337699},{"$f":"(L221+L222+L223)/'DNSP Inputs O & M'!$D$198","v":65.724658896671173},{"$f":"M221*D208","v":0.37463055571102571},null,{"$f":"'DNSP Inputs O & M'!$D$190*(1+'DNSP Inputs O & M'!$D$11)","v":17.715275747397808},{"$f":"'DNSP Inputs O & M'!$D$199*'DNSP Inputs O & M'!$D$200","v":8.16},null,{"$f":"P221*Q221","v":144.55665009876611},{"$f":"(S221+S222+S223)/'DNSP Inputs O & M'!$D$199","v":65.724658896671158},{"$f":"T221*D208","v":0.3746305557110256},null,null,null,{"$f":"'DNSP Inputs O & M'!$E$190","v":16.871691187997911},{"$f":"'DNSP Inputs O & M'!$E$197*'DNSP Inputs O & M'!$E$200","v":12.48},null,{"$f":"Y221*Z221","v":210.55870602621394},{"$f":"(AB221+AB222+AB223)/'DNSP Inputs O & M'!$E$197","v":62.59491323492491},{"$f":"AC221*AA208","v":0.356791005439072},null,{"$f":"'DNSP Inputs O & M'!$E$190*(1+'DNSP Inputs O & M'!$E$11)","v":17.715275747397808},{"$f":"'DNSP Inputs O & M'!$E$198*'DNSP Inputs O & M'!$E$200","v":10.08},null,{"$f":"AF221*AG221","v":178.5699795337699},{"$f":"(AI221+AI222+AI223)/'DNSP Inputs O & M'!$E$198","v":65.724658896671173},{"$f":"AJ221*AA208","v":0.37463055571102571},null,{"$f":"'DNSP Inputs O & M'!$E$190*(1+'DNSP Inputs O & M'!$E$11)","v":17.715275747397808},{"$f":"'DNSP Inputs O & M'!$E$199*'DNSP Inputs O & M'!$E$200","v":8.16},null,{"$f":"AM221*AN221","v":144.55665009876611},{"$f":"(AP221+AP222+AP223)/'DNSP Inputs O & M'!$E$199","v":65.724658896671158},{"$f":"AQ221*AA208","v":0.3746305557110256},null,null,null,{"$f":"'DNSP Inputs O & M'!$F$190","v":16.871691187997911},{"$f":"'DNSP Inputs O & M'!$F$197*'DNSP Inputs O & M'!$F$200","v":12.48},null,{"$f":"AV221*AW221","v":210.55870602621394},{"$f":"(AY221+AY222+AY223)/'DNSP Inputs O & M'!$F$197","v":62.59491323492491},{"$f":"AZ221*AX208","v":0.356791005439072},null,{"$f":"'DNSP Inputs O & M'!$F$190*(1+'DNSP Inputs O & M'!$F$11)","v":17.715275747397808},{"$f":"'DNSP Inputs O & M'!$F$198*'DNSP Inputs O & M'!$F$200","v":10.08},null,{"$f":"BC221*BD221","v":178.5699795337699},{"$f":"(BF221+BF222+BF223)/'DNSP Inputs O & M'!$F$198","v":65.724658896671173},{"$f":"BG221*AX208","v":0.37463055571102571},null,{"$f":"'DNSP Inputs O & M'!$F$190*(1+'DNSP Inputs O & M'!$F$11)","v":17.715275747397808},{"$f":"'DNSP Inputs O & M'!$F$199*'DNSP Inputs O & M'!$F$200","v":8.16},null,{"$f":"BJ221*BK221","v":144.55665009876611},{"$f":"(BM221+BM222+BM223)/'DNSP Inputs O & M'!$F$199","v":65.724658896671158},{"$f":"BN221*AX208","v":0.3746305557110256},null,null,null,{"$f":"'DNSP Inputs O & M'!$G$190","v":16.871691187997911},{"$f":"'DNSP Inputs O & M'!$G$197*'DNSP Inputs O & M'!$G$200","v":12.48},null,{"$f":"BS221*BT221","v":210.55870602621394},{"$f":"(BV221+BV222+BV223)/'DNSP Inputs O & M'!$G$197","v":62.59491323492491},{"$f":"BW221*BU208","v":0.356791005439072},null,{"$f":"'DNSP Inputs O & M'!$G$190*(1+'DNSP Inputs O & M'!$G$11)","v":17.715275747397808},{"$f":"'DNSP Inputs O & M'!$G$198*'DNSP Inputs O & M'!$G$200","v":10.08},null,{"$f":"BZ221*CA221","v":178.5699795337699},{"$f":"(CC221+CC222+CC223)/'DNSP Inputs O & M'!$G$198","v":65.724658896671173},{"$f":"CD221*BU208","v":0.37463055571102571},null,{"$f":"'DNSP Inputs O & M'!$G$190*(1+'DNSP Inputs O & M'!$G$11)","v":17.715275747397808},{"$f":"'DNSP Inputs O & M'!$G$199*'DNSP Inputs O & M'!$G$200","v":8.16},null,{"$f":"CG221*CH221","v":144.55665009876611},{"$f":"(CJ221+CJ222+CJ223)/'DNSP Inputs O & M'!$G$199","v":65.724658896671158},{"$f":"CK221*BU208","v":0.3746305557110256},null,null,null,{"$f":"'DNSP Inputs O & M'!$H$190","v":16.871691187997911},{"$f":"'DNSP Inputs O & M'!$H$197*'DNSP Inputs O & M'!$H$200","v":12.48},null,{"$f":"CP221*CQ221","v":210.55870602621394},{"$f":"(CS221+CS222+CS223)/'DNSP Inputs O & M'!$H$197","v":62.59491323492491},{"$f":"CT221*CR208","v":0.356791005439072},null,{"$f":"'DNSP Inputs O & M'!$H$190*(1+'DNSP Inputs O & M'!$H$11)","v":17.715275747397808},{"$f":"'DNSP Inputs O & M'!$H$198*'DNSP Inputs O & M'!$H$200","v":10.08},null,{"$f":"CW221*CX221","v":178.5699795337699},{"$f":"(CZ221+CZ222+CZ223)/'DNSP Inputs O & M'!$H$198","v":65.724658896671173},{"$f":"DA221*CR208","v":0.37463055571102571},null,{"$f":"'DNSP Inputs O & M'!$H$190*(1+'DNSP Inputs O & M'!$H$11)","v":17.715275747397808},{"$f":"'DNSP Inputs O & M'!$H$199*'DNSP Inputs O & M'!$H$200","v":8.16},null,{"$f":"DD221*DE221","v":144.55665009876611},{"$f":"(DG221+DG222+DG223)/'DNSP Inputs O & M'!$H$199","v":65.724658896671158},{"$f":"DH221*CR208","v":0.3746305557110256}]
["Luminaire",{"$f":"'DNSP Inputs O & M'!$D$191","v":352.72875158740868},{"$f":"'DNSP Inputs O & M'!$D$197*'DNSP Inputs O & M'!$D$201","v":3.7439999999999998},null,{"$f":"B222*C222","v":1320.616445943258},null,null,null,{"$f":"'DNSP Inputs O & M'!$D$191*(1+'DNSP Inputs O & M'!$D$11)","v":370.36518916677915},{"$f":"'DNSP Inputs O & M'!$D$198*'DNSP Inputs O & M'!$D$201","v":3.024},null,{"$f":"I222*J222","v":1119.9843320403402},null,null,null,{"$f":"'DNSP Inputs O & M'!$D$191*(1+'DNSP Inputs O & M'!$D$11)","v":370.36518916677915},{"$f":"'DNSP Inputs O & M'!$D$199*'DNSP Inputs O & M'!$D$201","v":2.448},null,{"$f":"P222*Q222","v":906.65398308027534},null,null,null,null,null,{"$f":"'DNSP Inputs O & M'!$E$191","v":352.72875158740868},{"$f":"'DNSP Inputs O & M'!$E$197*'DNSP Inputs O & M'!$E$201","v":3.7439999999999998},null,{"$f":"Y222*Z222","v":1320.616445943258},null,null,null,{"$f":"'DNSP Inputs O & M'!$E$191*(1+'DNSP Inputs O & M'!$E$11)","v":370.36518916677915},{"$f":"'DNSP Inputs O & M'!$E$198*'DNSP Inputs O & M'!$E$201","v":3.024},null,{"$f":"AF222*AG222","v":1119.9843320403402},null,null,null,{"$f":"'DNSP Inputs O & M'!$E$191*(1+'DNSP Inputs O & M'!$E$11)","v":370.36518916677915},{"$f":"'DNSP Inputs O & M'!$E$199*'DNSP Inputs O & M'!$E$201","v":2.448},null,{"$f":"AM222*AN222","v":906.65398308027534},null,null,null,null,null,{"$f":"'DNSP Inputs O & M'!$F$191","v":352.72875158740868},{"$f":"'DNSP Inputs O & M'!$F$197*'DNSP Inputs O & M'!$F$201","v":3.7439999999999998},null,{"$f":"AV222*AW222","v":1320.616445943258},null,null,null,{"$f":"'DNSP Inputs O & M'!$F$191*(1+'DNSP Inputs O & M'!$F$11)","v":370.36518916677915},{"$f":"'DNSP Inputs O & M'!$F$198*'DNSP Inputs O & M'!$F$201","v":3.024},null,{"$f":"BC222*BD222","v":1119.9843320403402},null,null,null,{"$f":"'DNSP Inputs O & M'!$F$191*(1+'DNSP Inputs O & M'!$F$11)","v":370.36518916677915},{"$f":"'DNSP Inputs O & M'!$F$199*'DNSP Inputs O & M'!$F$201","v":2.448},null,{"$f":"BJ222*BK222","v":906.65398308027534},null,null,null,null,null,{"$f":"'DNSP Inputs O & M'!$G$191","v":352.72875158740868},{"$f":"'DNSP Inputs O & M'!$G$197*'DNSP Inputs O & M'!$G$201","v":3.7439999999999998},null,{"$f":"BS222*BT222","v":1320.616445943258},null,null,null,{"$f":"'DNSP Inputs O & M'!$G$191*(1+'DNSP Inputs O & M'!$G$11)","v":370.36518916677915},{"$f":"'DNSP Inputs O & M'!$G$198*'DNSP Inputs O & M'!$G$201","v":3.024},null,{"$f":"BZ222*CA222","v":1119.9843320403402},null,null,null,{"$f":"'DNSP Inputs O & M'!$G$191*(1+'DNSP Inputs O & M'!$G$11)","v":370.36518916677915},{"$f":"'DNSP Inputs O & M'!$G$199*'DNSP Inputs O & M'!$G$201","v":2.448},null,{"$f":"CG222*CH222","v":906.65398308027534},null,null,null,null,null,{"$f":"'DNSP Inputs O & M'!$H$191","v":352.72875158740868},{"$f":"'DNSP Inputs O & M'!$H$197*'DNSP Inputs O & M'!$H$201","v":3.7439999999999998},null,{"$f":"CP222*CQ222","v":1320.616445943258},null,null,null,{"$f":"'DNSP Inputs O & M'!$H$191*(1+'DNSP Inputs O & M'!$H$11)","v":370.36518916677915},{"$f":"'DNSP Inputs O & M'!$H$198*'DNSP Inputs O & M'!$H$201","v":3.024},null,{"$f":"CW222*CX222","v":1119.9843320403402},null,null,null,{"$f":"'DNSP Inputs O & M'!$H$191*(1+'DNSP Inputs O & M'!$H$11)","v":370.36518916677915},{"$f":"'DNSP Inputs O & M'!$H$199*'DNSP Inputs O & M'!$H$201","v":2.448},null,{"$f":"DD222*DE222","v":906.65398308027534}]
["Miscellaneous",{"$f":"'DNSP Inputs O & M'!$D$192","v":12.497549028146603},{"$f":"'DNSP Inputs O & M'!$D$197*'DNSP Inputs O & M'!$D$202","v":2.4960000000000004},null,{"$f":"B223*C223","v":31.193882374253924},null,null,null,{"$f":"'DNSP Inputs O & M'!$D$192*(1+'DNSP Inputs O & M'!$D$11)","v":13.122426479553933},{"$f":"'DNSP Inputs O & M'!$D$198*'DNSP Inputs O & M'!$D$202","v":2.016},null,{"$f":"I223*J223","v":26.45481178278073},null,null,null,{"$f":"'DNSP Inputs O & M'!$D$192*(1+'DNSP Inputs O & M'!$D$11)","v":13.122426479553933},{"$f":"'DNSP Inputs O & M'!$D$199*'DNSP Inputs O & M'!$D$202","v":1.6320000000000001},null,{"$f":"P223*Q223","v":21.415800014632019},null,null,null,null,null,{"$f":"'DNSP Inputs O & M'!$E$192","v":12.497549028146603},{"$f":"'DNSP Inputs O & M'!$E$197*'DNSP Inputs O & M'!$E$202","v":2.4960000000000004},null,{"$f":"Y223*Z223","v":31.193882374253924},null,null,null,{"$f":"'DNSP Inputs O & M'!$E$192*(1+'DNSP Inputs O & M'!$E$11)","v":13.122426479553933},{"$f":"'DNSP Inputs O & M'!$E$198*'DNSP Inputs O & M'!$E$202","v":2.016},null,{"$f":"AF223*AG223","v":26.45481178278073},null,null,null,{"$f":"'DNSP Inputs O & M'!$E$192*(1+'DNSP Inputs O & M'!$E$11)","v":13.122426479553933},{"$f":"'DNSP Inputs O & M'!$E$199*'DNSP Inputs O & M'!$E$202","v":1.6320000000000001},null,{"$f":"AM223*AN223","v":21.415800014632019},null,null,null,null,null,{"$f":"'DNSP Inputs O & M'!$F$192","v":12.497549028146603},{"$f":"'DNSP Inputs O & M'!$F$197*'DNSP Inputs O & M'!$F$202","v":2.4960000000000004},null,{"$f":"AV223*AW223","v":31.193882374253924},null,null,null,{"$f":"'DNSP Inputs O & M'!$F$192*(1+'DNSP Inputs O & M'!$F$11)","v":13.122426479553933},{"$f":"'DNSP Inputs O & M'!$F$198*'DNSP Inputs O & M'!$F$202","v":2.016},null,{"$f":"BC223*BD223","v":26.45481178278073},null,null,null,{"$f":"'DNSP Inputs O & M'!$F$192*(1+'DNSP Inputs O & M'!$F$11)","v":13.122426479553933},{"$f":"'DNSP Inputs O & M'!$F$199*'DNSP Inputs O & M'!$F$202","v":1.6320000000000001},null,{"$f":"BJ223*BK223","v":21.415800014632019},null,null,null,null,null,{"$f":"'DNSP Inputs O & M'!$G$192","v":12.497549028146603},{"$f":"'DNSP Inputs O & M'!$G$197*'DNSP Inputs O & M'!$G$202","v":2.4960000000000004},null,{"$f":"BS223*BT223","v":31.193882374253924},null,null,null,{"$f":"'DNSP Inputs O & M'!$G$192*(1+'DNSP Inputs O & M'!$G$11)","v":13.122426479553933},{"$f":"'DNSP Inputs O & M'!$G$198*'DNSP Inputs O & M'!$G$202","v":2.016},null,{"$f":"BZ223*CA223","v":26.45481178278073},null,null,null,{"$f":"'DNSP Inputs O & M'!$G$192*(1+'DNSP Inputs O & M'!$G$11)","v":13.122426479553933},{"$f":"'DNSP Inputs O & M'!$G$199*'DNSP Inputs O & M'!$G$202","v":1.6320000000000001},null,{"$f":"CG223*CH223","v":21.415800014632019},null,null,null,null,null,{"$f":"'DNSP Inputs O & M'!$H$192","v":12.497549028146603},{"$f":"'DNSP Inputs O & M'!$H$197*'DNSP Inputs O & M'!$H$202","v":2.4960000000000004},null,{"$f":"CP223*CQ223","v":31.193882374253924},null,null,null,{"$f":"'DNSP Inputs O & M'!$H$192*(1+'DNSP Inputs O & M'!$H$11)","v":13.122426479553933},{"$f":"'DNSP Inputs O & M'!$H$198*'DNSP Inputs O & M'!$H$202","v":2.016},null,{"$f":"CW223*CX223","v":26.45481178278073},null,null,null,{"$f":"'DNSP Inputs O & M'!$H$192*(1+'DNSP Inputs O & M'!$H$11)","v":13.122426479553933},{"$f":"'DNSP Inputs O & M'!$H$199*'DNSP Inputs O & M'!$H$202","v":1.6320000000000001},null,{"$f":"DD223*DE223","v":21.415800014632019}]
["Labour - bulk PE cell change"]
["Crew costs",{"$f":"'DNSP Inputs O & M'!$D$12","v":100},{"$f":"'DNSP Inputs O & M'!$D$157","v":2},{"$f":"'DNSP Inputs O & M'!$D$17","v":8},{"$f":"B225*C225*D225","v":1600},{"$f":"E225/'DNSP Inputs O & M'!$D$188","v":200},{"$f":"IFERROR((F225+F226)/C219,0)","v":3.3195346320346317},null,{"$f":"'DNSP Inputs O & M'!$D$12","v":100},{"$f":"'DNSP Inputs O & M'!$D$157","v":2},{"$f":"'DNSP Inputs O & M'!$D$17","v":8},{"$f":"I225*J225*K225","v":1600},{"$f":"L225/'DNSP Inputs O & M'!$D$188","v":200},{"$f":"IFERROR((M225+M226)/J219,0)","v":4.1919507736075667},null,{"$f":"'DNSP Inputs O & M'!$D$12","v":100},{"$f":"'DNSP Inputs O & M'!$D$157","v":2},{"$f":"'DNSP Inputs O & M'!$D$17","v":8},{"$f":"P225*Q225*R225","v":1600},{"$f":"S225/'DNSP Inputs O & M'!$D$188","v":200},{"$f":"IFERROR((T225+T226)/Q219,0)","v":5.260487245311456},null,null,null,{"$f":"'DNSP Inputs O & M'!$E$12","v":100.37},{"$f":"'DNSP Inputs O & M'!$E$157","v":2},{"$f":"'DNSP Inputs O & M'!$E$17","v":8},{"$f":"Y225*Z225*AA225","v":1605.92},{"$f":"AB225/'DNSP Inputs O & M'!$E$188","v":200.74},{"$f":"IFERROR((AC225+AC226)/Z219,0)","v":3.3295454545454546},null,{"$f":"'DNSP Inputs O & M'!$E$12","v":100.37},{"$f":"'DNSP Inputs O & M'!$E$157","v":2},{"$f":"'DNSP Inputs O & M'!$E$17","v":8},{"$f":"AF225*AG225*AH225","v":1605.92},{"$f":"AI225/'DNSP Inputs O & M'!$E$188","v":200.74},{"$f":"IFERROR((AJ225+AJ226)/AG219,0)","v":4.2241724400842342},null,{"$f":"'DNSP Inputs O & M'!$E$12","v":100.37},{"$f":"'DNSP Inputs O & M'!$E$157","v":2},{"$f":"'DNSP Inputs O & M'!$E$17","v":8},{"$f":"AM225*AN225*AO225","v":1605.92},{"$f":"AP225/'DNSP Inputs O & M'!$E$188","v":200.74},{"$f":"IFERROR((AQ225+AQ226)/AN219,0)","v":5.3009222777527638},null,null,null,{"$f":"'DNSP Inputs O & M'!$F$12","v":101.16292300000001},{"$f":"'DNSP Inputs O & M'!$F$157","v":2},{"$f":"'DNSP Inputs O & M'!$F$17","v":8},{"$f":"AV225*AW225*AX225","v":1618.6067680000001},{"$f":"AY225/'DNSP Inputs O & M'!$F$188","v":202.32584600000001},{"$f":"IFERROR((AZ225+AZ226)/AW219,0)","v":3.3509989989177491},null,{"$f":"'DNSP Inputs O & M'!$F$12","v":101.16292300000001},{"$f":"'DNSP Inputs O & M'!$F$157","v":2},{"$f":"'DNSP Inputs O & M'!$F$17","v":8},{"$f":"BC225*BD225*BE225","v":1618.6067680000001},{"$f":"BF225/'DNSP Inputs O & M'!$F$188","v":202.32584600000001},{"$f":"IFERROR((BG225+BG226)/BD219,0)","v":4.2665852688728751},null,{"$f":"'DNSP Inputs O & M'!$F$12","v":101.16292300000001},{"$f":"'DNSP Inputs O & M'!$F$157","v":2},{"$f":"'DNSP Inputs O & M'!$F$17","v":8},{"$f":"BJ225*BK225*BL225","v":1618.6067680000001},{"$f":"BM225/'DNSP Inputs O & M'!$F$188","v":202.32584600000001},{"$f":"IFERROR((BN225+BN226)/BK219,0)","v":5.3541462197620397},null,null,null,{"$f":"'DNSP Inputs O & M'!$G$12","v":102.13408706080001},{"$f":"'DNSP Inputs O & M'!$G$157","v":2},{"$f":"'DNSP Inputs O & M'!$G$17","v":8},{"$f":"BS225*BT225*BU225","v":1634.1453929728002},{"$f":"BV225/'DNSP Inputs O & M'!$G$188","v":204.26817412160003},{"$f":"IFERROR((BW225+BW226)/BT219,0)","v":3.3772750828138531},null,{"$f":"'DNSP Inputs O & M'!$G$12","v":102.13408706080001},{"$f":"'DNSP Inputs O & M'!$G$157","v":2},{"$f":"'DNSP Inputs O & M'!$G$17","v":8},{"$f":"BZ225*CA225*CB225","v":1634.1453929728002},{"$f":"CC225/'DNSP Inputs O & M'!$G$188","v":204.26817412160003},{"$f":"IFERROR((CD225+CD226)/CA219,0)","v":4.3148984640810832},null,{"$f":"'DNSP Inputs O & M'!$G$12","v":102.13408706080001},{"$f":"'DNSP Inputs O & M'!$G$157","v":2},{"$f":"'DNSP Inputs O & M'!$G$17","v":8},{"$f":"CG225*CH225*CI225","v":1634.1453929728002},{"$f":"CJ225/'DNSP Inputs O & M'!$G$188","v":204.26817412160003},{"$f":"IFERROR((CK225+CK226)/CH219,0)","v":5.4147745431605747},null,null,null,{"$f":"'DNSP Inputs O & M'!$H$12","v":103.17585474882017},{"$f":"'DNSP Inputs O & M'!$H$157","v":2},{"$f":"'DNSP Inputs O & M'!$H$17","v":8},{"$f":"CP225*CQ225*CR225","v":1650.8136759811227},{"$f":"CS225/'DNSP Inputs O & M'!$H$188","v":206.35170949764034},{"$f":"IFERROR((CT225+CT226)/CQ219,0)","v":3.4054614380092034},null,{"$f":"'DNSP Inputs O & M'!$H$12","v":103.17585474882017},{"$f":"'DNSP Inputs O & M'!$H$157","v":2},{"$f":"'DNSP Inputs O & M'!$H$17","v":8},{"$f":"CW225*CX225*CY225","v":1650.8136759811227},{"$f":"CZ225/'DNSP Inputs O & M'!$H$188","v":206.35170949764034},{"$f":"IFERROR((DA225+DA226)/CX219,0)","v":4.366085960785802},null,{"$f":"'DNSP Inputs O & M'!$H$12","v":103.17585474882017},{"$f":"'DNSP Inputs O & M'!$H$157","v":2},{"$f":"'DNSP Inputs O & M'!$H$17","v":8},{"$f":"DD225*DE225*DF225","v":1650.8136759811227},{"$f":"DG225/'DNSP Inputs O & M'!$H$188","v":206.35170949764034},{"$f":"IFERROR((DH225+DH226)/DE219,0)","v":5.4790098331429666}]
["Elevated platform vehicle costs",{"$f":"'DNSP Inputs O & M'!$D$14","v":45.38},1,{"$f":"'DNSP Inputs O & M'!$D$17","v":8},{"$f":"B226*C226*D226","v":363.04},{"$f":"E226/'DNSP Inputs O & M'!$D$188","v":45.38},null,null,{"$f":"'DNSP Inputs O & M'!$D$15","v":57.553455530448915},1,{"$f":"'DNSP Inputs O & M'!$D$17","v":8},{"$f":"I226*J226*K226","v":460.42764424359132},{"$f":"L226/'DNSP Inputs O & M'!$D$188","v":57.553455530448915},null,null,{"$f":"'DNSP Inputs O & M'!$D$15","v":57.553455530448915},1,{"$f":"'DNSP Inputs O & M'!$D$17","v":8},{"$f":"P226*Q226*R226","v":460.42764424359132},{"$f":"S226/'DNSP Inputs O & M'!$D$188","v":57.553455530448915},null,null,null,null,{"$f":"'DNSP Inputs O & M'!$E$14","v":45.38},1,{"$f":"'DNSP Inputs O & M'!$E$17","v":8},{"$f":"Y226*Z226*AA226","v":363.04},{"$f":"AB226/'DNSP Inputs O & M'!$E$188","v":45.38},null,null,{"$f":"'DNSP Inputs O & M'!$E$15","v":58.793154718775355},1,{"$f":"'DNSP Inputs O & M'!$E$17","v":8},{"$f":"AF226*AG226*AH226","v":470.34523775020284},{"$f":"AI226/'DNSP Inputs O & M'!$E$188","v":58.793154718775355},null,null,{"$f":"'DNSP Inputs O & M'!$E$15","v":58.793154718775355},1,{"$f":"'DNSP Inputs O & M'!$E$17","v":8},{"$f":"AM226*AN226*AO226","v":470.34523775020284},{"$f":"AP226/'DNSP Inputs O & M'!$E$188","v":58.793154718775355},null,null,null,null,{"$f":"'DNSP Inputs O & M'!$F$14","v":45.38},1,{"$f":"'DNSP Inputs O & M'!$F$17","v":8},{"$f":"AV226*AW226*AX226","v":363.04},{"$f":"AY226/'DNSP Inputs O & M'!$F$188","v":45.38},null,null,{"$f":"'DNSP Inputs O & M'!$F$15","v":59.813152919549431},1,{"$f":"'DNSP Inputs O & M'!$F$17","v":8},{"$f":"BC226*BD226*BE226","v":478.50522335639545},{"$f":"BF226/'DNSP Inputs O & M'!$F$188","v":59.813152919549431},null,null,{"$f":"'DNSP Inputs O & M'!$F$15","v":59.813152919549431},1,{"$f":"'DNSP Inputs O & M'!$F$17","v":8},{"$f":"BJ226*BK226*BL226","v":478.50522335639545},{"$f":"BM226/'DNSP Inputs O & M'!$F$188","v":59.813152919549431},null,null,null,null,{"$f":"'DNSP Inputs O & M'!$G$14","v":45.38},1,{"$f":"'DNSP Inputs O & M'!$G$17","v":8},{"$f":"BS226*BT226*BU226","v":363.04},{"$f":"BV226/'DNSP Inputs O & M'!$G$188","v":45.38},null,null,{"$f":"'DNSP Inputs O & M'!$G$15","v":60.839187511541702},1,{"$f":"'DNSP Inputs O & M'!$G$17","v":8},{"$f":"BZ226*CA226*CB226","v":486.71350009233362},{"$f":"CC226/'DNSP Inputs O & M'!$G$188","v":60.839187511541702},null,null,{"$f":"'DNSP Inputs O & M'!$G$15","v":60.839187511541702},1,{"$f":"'DNSP Inputs O & M'!$G$17","v":8},{"$f":"CG226*CH226*CI226","v":486.71350009233362},{"$f":"CJ226/'DNSP Inputs O & M'!$G$188","v":60.839187511541702},null,null,null,null,{"$f":"'DNSP Inputs O & M'!$H$14","v":45.38},1,{"$f":"'DNSP Inputs O & M'!$H$17","v":8},{"$f":"CP226*CQ226*CR226","v":363.04},{"$f":"CS226/'DNSP Inputs O & M'!$H$188","v":45.38},null,null,{"$f":"'DNSP Inputs O & M'!$H$15","v":61.900611933039357},1,{"$f":"'DNSP Inputs O & M'!$H$17","v":8},{"$f":"CW226*CX226*CY226","v":495.20489546431486},{"$f":"CZ226/'DNSP Inputs O & M'!$H$188","v":61.900611933039357},null,null,{"$f":"'DNSP Inputs O & M'!$H$15","v":61.900611933039357},1,{"$f":"'DNSP Inputs O & M'!$H$17","v":8},{"$f":"DD226*DE226*DF226","v":495.20489546431486},{"$f":"DG226/'DNSP Inputs O & M'!$H$188","v":61.900611933039357}]
["Labour - repair of faults"]
["Crew costs",{"$f":"'DNSP Inputs O & M'!$D$12","v":100},{"$f":"'DNSP Inputs O & M'!$D$157","v":2},{"$f":"'DNSP Inputs O & M'!$D$17","v":8},{"$f":"B228*C228*D228","v":1600},{"$f":"(E228+E229)/'DNSP Inputs O & M'!$D$197","v":78.647435897435898},{"$f":"F228*D208","v":0.44829038461538462},null,{"$f":"'DNSP Inputs O & M'!$D$12","v":100},{"$f":"'DNSP Inputs O & M'!$D$157","v":2},{"$f":"'DNSP Inputs O & M'!$D$17","v":8},{"$f":"I228*J228*K228","v":1600},{"$f":"(L228+L229)/'DNSP Inputs O & M'!$D$198","v":102.20375219462258},{"$f":"M228*D208","v":0.58256138750934872},null,{"$f":"'DNSP Inputs O & M'!$D$12","v":100},{"$f":"'DNSP Inputs O & M'!$D$157","v":2},{"$f":"'DNSP Inputs O & M'!$D$17","v":8},{"$f":"P228*Q228*R228","v":1600},{"$f":"(S228+S229)/'DNSP Inputs O & M'!$D$199","v":126.25169388747494},{"$f":"T228*D208","v":0.71963465515860725},null,null,null,{"$f":"'DNSP Inputs O & M'!$E$12","v":100.37},{"$f":"'DNSP Inputs O & M'!$E$157","v":2},{"$f":"'DNSP Inputs O & M'!$E$17","v":8},{"$f":"Y228*Z228*AA228","v":1605.92},{"$f":"(AB228+AB229)/'DNSP Inputs O & M'!$E$197","v":78.884615384615387},{"$f":"AC228*AA208","v":0.44964230769230773},null,{"$f":"'DNSP Inputs O & M'!$E$12","v":100.37},{"$f":"'DNSP Inputs O & M'!$E$157","v":2},{"$f":"'DNSP Inputs O & M'!$E$17","v":8},{"$f":"AF228*AG228*AH228","v":1605.92},{"$f":"(AI228+AI229)/'DNSP Inputs O & M'!$E$198","v":102.98934711062513},{"$f":"AJ228*AA208","v":0.58703927853056326},null,{"$f":"'DNSP Inputs O & M'!$E$12","v":100.37},{"$f":"'DNSP Inputs O & M'!$E$157","v":2},{"$f":"'DNSP Inputs O & M'!$E$17","v":8},{"$f":"AM228*AN228*AO228","v":1605.92},{"$f":"(AP228+AP229)/'DNSP Inputs O & M'!$E$199","v":127.22213466606634},{"$f":"AQ228*AA208","v":0.72516616759657815},null,null,null,{"$f":"'DNSP Inputs O & M'!$F$12","v":101.16292300000001},{"$f":"'DNSP Inputs O & M'!$F$157","v":2},{"$f":"'DNSP Inputs O & M'!$F$17","v":8},{"$f":"AV228*AW228*AX228","v":1618.6067680000001},{"$f":"(AY228+AY229)/'DNSP Inputs O & M'!$F$197","v":79.392899358974361},{"$f":"AZ228*AX208","v":0.45253952634615385},null,{"$f":"'DNSP Inputs O & M'!$F$12","v":101.16292300000001},{"$f":"'DNSP Inputs O & M'!$F$157","v":2},{"$f":"'DNSP Inputs O & M'!$F$17","v":8},{"$f":"BC228*BD228*BE228","v":1618.6067680000001},{"$f":"(BF228+BF229)/'DNSP Inputs O & M'!$F$198","v":104.02341226966249},{"$f":"BG228*AX208","v":0.5929334499370762},null,{"$f":"'DNSP Inputs O & M'!$F$12","v":101.16292300000001},{"$f":"'DNSP Inputs O & M'!$F$157","v":2},{"$f":"'DNSP Inputs O & M'!$F$17","v":8},{"$f":"BJ228*BK228*BL228","v":1618.6067680000001},{"$f":"(BM228+BM229)/'DNSP Inputs O & M'!$F$199","v":128.49950927428895},{"$f":"BN228*AX208","v":0.73244720286344711},null,null,null,{"$f":"'DNSP Inputs O & M'!$G$12","v":102.13408706080001},{"$f":"'DNSP Inputs O & M'!$G$157","v":2},{"$f":"'DNSP Inputs O & M'!$G$17","v":8},{"$f":"BS228*BT228*BU228","v":1634.1453929728002},{"$f":"(BV228+BV229)/'DNSP Inputs O & M'!$G$197","v":80.015440423589752},{"$f":"BW228*BU208","v":0.45608801041446162},null,{"$f":"'DNSP Inputs O & M'!$G$12","v":102.13408706080001},{"$f":"'DNSP Inputs O & M'!$G$157","v":2},{"$f":"'DNSP Inputs O & M'!$G$17","v":8},{"$f":"BZ228*CA228*CB228","v":1634.1453929728002},{"$f":"(CC228+CC229)/'DNSP Inputs O & M'!$G$198","v":105.20133398140545},{"$f":"CD228*BU208","v":0.59964760369401116},null,{"$f":"'DNSP Inputs O & M'!$G$12","v":102.13408706080001},{"$f":"'DNSP Inputs O & M'!$G$157","v":2},{"$f":"'DNSP Inputs O & M'!$G$17","v":8},{"$f":"CG228*CH228*CI228","v":1634.1453929728002},{"$f":"(CJ228+CJ229)/'DNSP Inputs O & M'!$G$199","v":129.95458903585379},{"$f":"CK228*BU208","v":0.74074115750436664},null,null,null,{"$f":"'DNSP Inputs O & M'!$H$12","v":103.17585474882017},{"$f":"'DNSP Inputs O & M'!$H$157","v":2},{"$f":"'DNSP Inputs O & M'!$H$17","v":8},{"$f":"CP228*CQ228*CR228","v":1650.8136759811227},{"$f":"(CS228+CS229)/'DNSP Inputs O & M'!$H$197","v":80.683240223602667},{"$f":"CT228*CR208","v":0.4598944692745352},null,{"$f":"'DNSP Inputs O & M'!$H$12","v":103.17585474882017},{"$f":"'DNSP Inputs O & M'!$H$157","v":2},{"$f":"'DNSP Inputs O & M'!$H$17","v":8},{"$f":"CW228*CX228*CY228","v":1650.8136759811227},{"$f":"(CZ228+CZ229)/'DNSP Inputs O & M'!$H$198","v":106.44933390106335},{"$f":"DA228*CR208","v":0.6067612032360612},null,{"$f":"'DNSP Inputs O & M'!$H$12","v":103.17585474882017},{"$f":"'DNSP Inputs O & M'!$H$157","v":2},{"$f":"'DNSP Inputs O & M'!$H$17","v":8},{"$f":"DD228*DE228*DF228","v":1650.8136759811227},{"$f":"(DG228+DG229)/'DNSP Inputs O & M'!$H$199","v":131.49623599543122},{"$f":"DH228*CR208","v":0.74952854517395795}]
["Elevated platform vehicle costs",{"$f":"'DNSP Inputs O & M'!$D$14","v":45.38},1,{"$f":"'DNSP Inputs O & M'!$D$17","v":8},{"$f":"B229*C229*D229","v":363.04},null,null,null,{"$f":"'DNSP Inputs O & M'!$D$15","v":57.553455530448915},1,{"$f":"'DNSP Inputs O & M'!$D$17","v":8},{"$f":"I229*J229*K229","v":460.42764424359132},null,null,null,{"$f":"'DNSP Inputs O & M'!$D$15","v":57.553455530448915},1,{"$f":"'DNSP Inputs O & M'!$D$17","v":8},{"$f":"P229*Q229*R229","v":460.42764424359132},null,null,null,null,null,{"$f":"'DNSP Inputs O & M'!$E$14","v":45.38},1,{"$f":"'DNSP Inputs O & M'!$E$17","v":8},{"$f":"Y229*Z229*AA229","v":363.04},null,null,null,{"$f":"'DNSP Inputs O & M'!$E$15","v":58.793154718775355},1,{"$f":"'DNSP Inputs O & M'!$E$17","v":8},{"$f":"AF229*AG229*AH229","v":470.34523775020284},null,null,null,{"$f":"'DNSP Inputs O & M'!$E$15","v":58.793154718775355},1,{"$f":"'DNSP Inputs O & M'!$E$17","v":8},{"$f":"AM229*AN229*AO229","v":470.34523775020284},null,null,null,null,null,{"$f":"'DNSP Inputs O & M'!$F$14","v":45.38},1,{"$f":"'DNSP Inputs O & M'!$F$17","v":8},{"$f":"AV229*AW229*AX229","v":363.04},null,null,null,{"$f":"'DNSP Inputs O & M'!$F$15","v":59.813152919549431},1,{"$f":"'DNSP Inputs O & M'!$F$17","v":8},{"$f":"BC229*BD229*BE229","v":478.50522335639545},null,null,null,{"$f":"'DNSP Inputs O & M'!$F$15","v":59.813152919549431},1,{"$f":"'DNSP Inputs O & M'!$F$17","v":8},{"$f":"BJ229*BK229*BL229","v":478.50522335639545},null,null,null,null,null,{"$f":"'DNSP Inputs O & M'!$G$14","v":45.38},1,{"$f":"'DNSP Inputs O & M'!$G$17","v":8},{"$f":"BS229*BT229*BU229","v":363.04},null,null,null,{"$f":"'DNSP Inputs O & M'!$G$15","v":60.839187511541702},1,{"$f":"'DNSP Inputs O & M'!$G$17","v":8},{"$f":"BZ229*CA229*CB229","v":486.71350009233362},null,null,null,{"$f":"'DNSP Inputs O & M'!$G$15","v":60.839187511541702},1,{"$f":"'DNSP Inputs O & M'!$G$17","v":8},{"$f":"CG229*CH229*CI229","v":486.71350009233362},null,null,null,null,null,{"$f":"'DNSP Inputs O & M'!$H$14","v":45.38},1,{"$f":"'DNSP Inputs O & M'!$H$17","v":8},{"$f":"CP229*CQ229*CR229","v":363.04},null,null,null,{"$f":"'DNSP Inputs O & M'!$H$15","v":61.900611933039357},1,{"$f":"'DNSP Inputs O & M'!$H$17","v":8},{"$f":"CW229*CX229*CY229","v":495.20489546431486},null,null,null,{"$f":"'DNSP Inputs O & M'!$H$15","v":61.900611933039357},1,{"$f":"'DNSP Inputs O & M'!$H$17","v":8},{"$f":"DD229*DE229*DF229","v":495.20489546431486}]
["Other Maintenance and Repair costs",null,null,null,null,null,{"$f":"'DNSP Inputs O & M'!$D$209","v":5.4849190730023901E-2},null,null,null,null,null,null,{"$f":"'DNSP Inputs O & M'!$D$209","v":5.4849190730023901E-2},null,null,null,null,null,null,{"$f":"'DNSP Inputs O & M'!$D$209","v":5.4849190730023901E-2},null,null,null,null,null,null,null,null,{"$f":"'DNSP Inputs O & M'!$E$209","v":3.7878170119515532E-2},null,null,null,null,null,null,{"$f":"'DNSP Inputs O & M'!$E$209","v":3.7878170119515532E-2},null,null,null,null,null,null,{"$f":"'DNSP Inputs O & M'!$E$209","v":3.7878170119515532E-2},null,null,null,null,null,null,null,null,{"$f":"'DNSP Inputs O & M'!$F$209","v":6.1172668992344095E-2},null,null,null,null,null,null,{"$f":"'DNSP Inputs O & M'!$F$209","v":6.1172668992344095E-2},null,null,null,null,null,null,{"$f":"'DNSP Inputs O & M'!$F$209","v":6.1172668992344095E-2},null,null,null,null,null,null,null,null,{"$f":"'DNSP Inputs O & M'!$G$209","v":5.6209581387887605E-2},null,null,null,null,null,null,{"$f":"'DNSP Inputs O & M'!$G$209","v":5.6209581387887605E-2},null,null,null,null,null,null,{"$f":"'DNSP Inputs O & M'!$G$209","v":5.6209581387887605E-2},null,null,null,null,null,null,null,null,{"$f":"'DNSP Inputs O & M'!$H$209","v":5.0722341523963703E-2},null,null,null,null,null,null,{"$f":"'DNSP Inputs O & M'!$H$209","v":5.0722341523963703E-2},null,null,null,null,null,null,{"$f":"'DNSP Inputs O & M'!$H$209","v":5.0722341523963703E-2}]
[]
["Overheads",{"$f":"'DNSP Inputs O & M'!$D$18","v":0.25},null,null,null,null,{"$f":"B232*SUM(G219:G230)","v":1.572106652829713},null,{"$f":"'DNSP Inputs O & M'!$D$18","v":0.25},null,null,null,null,{"$f":"I232*SUM(N219:N230)","v":1.8546003439956726},null,{"$f":"'DNSP Inputs O & M'!$D$18","v":0.25},null,null,null,null,{"$f":"P232*SUM(U219:U230)","v":2.15600277883396},null,null,null,{"$f":"'DNSP Inputs O & M'!$E$18","v":0.25},null,null,null,null,{"$f":"Y232*SUM(AD219:AD230)","v":1.5707045840740224},null,{"$f":"'DNSP Inputs O & M'!$E$18","v":0.25},null,null,null,null,{"$f":"AF232*SUM(AK219:AK230)","v":1.8595324782175162},null,{"$f":"'DNSP Inputs O & M'!$E$18","v":0.25},null,null,null,null,{"$f":"AM232*SUM(AR219:AR230)","v":2.1632516599011522},null,null,null,{"$f":"'DNSP Inputs O & M'!$F$18","v":0.25},null,null,null,null,{"$f":"AV232*SUM(BA219:BA230)","v":1.5826158995487647},null,{"$f":"'DNSP Inputs O & M'!$F$18","v":0.25},null,null,null,null,{"$f":"BC232*SUM(BH219:BH230)","v":1.8774328529845119},null,{"$f":"'DNSP Inputs O & M'!$F$18","v":0.25},null,null,null,null,{"$f":"BJ232*SUM(BO219:BO230)","v":2.1842015289383956},null,null,null,{"$f":"'DNSP Inputs O & M'!$G$18","v":0.25},null,null,null,null,{"$f":"BS232*SUM(BX219:BX230)","v":1.5888312696387534},null,{"$f":"'DNSP Inputs O & M'!$G$18","v":0.25},null,null,null,null,{"$f":"BZ232*SUM(CE219:CE230)","v":1.8899489183246836},null,{"$f":"'DNSP Inputs O & M'!$G$18","v":0.25},null,null,null,null,{"$f":"CG232*SUM(CL219:CL230)","v":2.2001913265471451},null,null,null,{"$f":"'DNSP Inputs O & M'!$H$18","v":0.25},null,null,null,null,{"$f":"CP232*SUM(CU219:CU230)","v":1.5954576631866282},null,{"$f":"'DNSP Inputs O & M'!$H$18","v":0.25},null,null,null,null,{"$f":"CW232*SUM(DB219:DB230)","v":1.9031523824203946},null,{"$f":"'DNSP Inputs O & M'!$H$18","v":0.25},null,null,null,null,{"$f":"DD232*SUM(DI219:DI230)","v":2.2170751859941595}]
[]
[null,null,null,null,null,null,{"$f":"SUM(G219,G221,G225,G228,G230,G232)","v":7.8605332641485646},null,null,null,null,null,null,{"$f":"SUM(N219,N221,N225,N228,N230,N232)","v":9.2730017199783639},null,null,null,null,null,null,{"$f":"SUM(U219,U221,U225,U228,U230,U232)","v":10.7800138941698},null,null,null,null,null,null,null,null,{"$f":"SUM(AD219,AD221,AD225,AD228,AD230,AD232)","v":7.8535229203701116},null,null,null,null,null,null,{"$f":"SUM(AK219,AK221,AK225,AK228,AK230,AK232)","v":9.2976623910875809},null,null,null,null,null,null,{"$f":"SUM(AR219,AR221,AR225,AR228,AR230,AR232)","v":10.816258299505762},null,null,null,null,null,null,null,null,{"$f":"SUM(BA219,BA221,BA225,BA228,BA230,BA232)","v":7.9130794977438237},null,null,null,null,null,null,{"$f":"SUM(BH219,BH221,BH225,BH228,BH230,BH232)","v":9.3871642649225588},null,null,null,null,null,null,{"$f":"SUM(BO219,BO221,BO225,BO228,BO230,BO232)","v":10.921007644691977},null,null,null,null,null,null,null,null,{"$f":"SUM(BX219,BX221,BX225,BX228,BX230,BX232)","v":7.9441563481937667},null,null,null,null,null,null,{"$f":"SUM(CE219,CE221,CE225,CE228,CE230,CE232)","v":9.4497445916234177},null,null,null,null,null,null,{"$f":"SUM(CL219,CL221,CL225,CL228,CL230,CL232)","v":11.000956632735726},null,null,null,null,null,null,null,null,{"$f":"SUM(CU219,CU221,CU225,CU228,CU230,CU232)","v":7.9772883159331407},null,null,null,null,null,null,{"$f":"SUM(DB219,DB221,DB225,DB228,DB230,DB232)","v":9.5157619121019739},null,null,null,null,null,null,{"$f":"SUM(DI219,DI221,DI225,DI228,DI230,DI232)","v":11.085375929970798}]

{"sheet":"Capex 2016-2020","index":9,"n_rows":130,"n_cols":94,"rows_kept":130,"cut":false,"hidden":false,"merged":[[40,1,40,5],[40,7,40,11],[40,20,40,24],[40,26,40,30],[40,89,40,93],[40,13,40,17],[40,32,40,36],[40,51,40,55],[40,70,40,74],[40,77,40,81],[40,83,40,87],[40,39,40,43],[40,45,40,49],[40,58,40,62],[40,64,40,68]]}
[{"$f":"'DNSP Inputs O & M'!$A$3","v":"Powercor"}]
[]
["Public Lighting Capex Costs"]
[{"$f":"'DNSP Inputs Capex'!$C$5","v":"Real 2015 $ "}]
[]
["Summary",{"$f":"'DNSP Inputs General'!K$2","v":2016},{"$f":"'DNSP Inputs General'!L$2","v":2017},{"$f":"'DNSP Inputs General'!M$2","v":2018},{"$f":"'DNSP Inputs General'!N$2","v":2019},{"$f":"'DNSP Inputs General'!O$2","v":2020}]
[]
["Existing Lights Luminaires - Real 2015 $ "]
["MV 80",{"$f":"SUM(F55,L55,R55)","v":45624.081364935671},{"$f":"SUM(Y55,AE55,AK55)","v":35752.090262517748},{"$f":"SUM(AR55,AX55,BD55)","v":32526.499153629655},{"$f":"SUM(BK55,BQ55,BW55)","v":29389.160611183346},{"$f":"SUM(CD55,CJ55,CP55)","v":26368.483855707989}]
["S-HP 150 ",{"$f":"SUM(F68,L68,R68)","v":385530.18627011869},{"$f":"SUM(Y68,AE68,AK68)","v":387891.11825436028},{"$f":"SUM(AR68,AX68,BD68)","v":390605.87317261228},{"$f":"SUM(BK68,BQ68,BW68)","v":393529.27449906606},{"$f":"SUM(CD68,CJ68,CP68)","v":396558.1328907116}]
["S-HP 250 ",{"$f":"SUM(F81,L81,R81)","v":178887.38841125826},{"$f":"SUM(Y81,AE81,AK81)","v":185477.4148703698},{"$f":"SUM(AR81,AX81,BD81)","v":192480.28022131449},{"$f":"SUM(BK81,BQ81,BW81)","v":199847.51977469362},{"$f":"SUM(CD81,CJ81,CP81)","v":207544.80488194947}]
["Other Light types (excluding T5s)",{"$f":"'DNSP Inputs Capex'!D100","v":1436304},{"$f":"'DNSP Inputs Capex'!E100","v":1436304},{"$f":"'DNSP Inputs Capex'!F100","v":1436304},{"$f":"'DNSP Inputs Capex'!G100","v":1436304},{"$f":"'DNSP Inputs Capex'!H100","v":1436304}]
[null,{"$f":"SUM(B9:B12)","v":2046345.6560463128},{"$f":"SUM(C9:C12)","v":2045424.6233872478},{"$f":"SUM(D9:D12)","v":2051916.6525475564},{"$f":"SUM(E9:E12)","v":2059069.9548849431},{"$f":"SUM(F9:F12)","v":2066775.421628369}]
[]
["Energy Efficient Luminaires - Real 2015 $ "]
["T5 (2 X 14W)",{"$f":"SUM(F117,L117,R117)","v":10290.925595897505},{"$f":"SUM(Y117,AE117,AK117)","v":9683.611129478868},{"$f":"SUM(AR117,AX117,BD117)","v":9585.2266306577676},{"$f":"SUM(BK117,BQ117,BW117)","v":9421.5223521393509},{"$f":"SUM(CD117,CJ117,CP117)","v":9195.251349082173}]
["Category P LED",{"$f":"SUM(F130,L130,R130)","v":43235.339871202676},{"$f":"SUM(Y130,AE130,AK130)","v":59317.295283494503},{"$f":"SUM(AR130,AX130,BD130)","v":64739.022548687855},{"$f":"SUM(BK130,BQ130,BW130)","v":70161.170140559465},{"$f":"SUM(CD130,CJ130,CP130)","v":75501.517727750892}]
[null,{"$f":"SUM(B16:B17)","v":53526.26546710018},{"$f":"SUM(C16:C17)","v":69000.906412973374},{"$f":"SUM(D16:D17)","v":74324.249179345628},{"$f":"SUM(E16:E17)","v":79582.692492698814},{"$f":"SUM(F16:F17)","v":84696.769076833065}]
[]
["Poles & Brackets - Real 2015 $ "]
["Dedicated poles",{"$f":"SUM(F93,L93,R93)","v":768938.45704431774},{"$f":"SUM(Y93,AE93,AK93)","v":770129.00991547119},{"$f":"SUM(AR93,AX93,BD93)","v":771825.03067756863},{"$f":"SUM(BK93,BQ93,BW93)","v":773785.62637472909},{"$f":"SUM(CD93,CJ93,CP93)","v":775868.26933743991}]
["Brackets",{"$f":"SUM(F103,L103,R103)","v":8077.0320010320738},{"$f":"SUM(Y103,AE103,AK103)","v":8109.5946568764266},{"$f":"SUM(AR103,AX103,BD103)","v":8157.5546295534123},{"$f":"SUM(BK103,BQ103,BW103)","v":8213.3188667479753},{"$f":"SUM(CD103,CJ103,CP103)","v":8272.6144588488187}]
[null,{"$f":"SUM(B21:B22)","v":777015.48904534976},{"$f":"SUM(C21:C22)","v":778238.6045723476},{"$f":"SUM(D21:D22)","v":779982.58530712209},{"$f":"SUM(E21:E22)","v":781998.94524147711},{"$f":"SUM(F21:F22)","v":784140.88379628875}]
[]
[]
["Customer Contributions - Real 2015 $ "]
["MV80 Lights replaced with T5 Energy Efficient Lights"]
["WDV RAB - MV 80 Luminaire",{"$f":"'Charges Summary'!D34/'Charges Summary'!D$4","v":70.396257896204162},{"$f":"'Charges Summary'!E34/'Charges Summary'!E$4","v":79.995027138543477},{"$f":"'Charges Summary'!F34/'Charges Summary'!F$4","v":88.860958312706686},{"$f":"'Charges Summary'!G34/'Charges Summary'!G$4","v":96.783760623201715},{"$f":"'Charges Summary'!H34/'Charges Summary'!H$4","v":103.97487227368781}]
["Number of Lights MV80 replaced with T5",{"$f":"'DNSP Inputs Capex'!D36","v":10218.093200000003},{"$f":"'DNSP Inputs Capex'!E36","v":11047.750740000003},{"$f":"'DNSP Inputs Capex'!F36","v":4889.415605999995},{"$f":"'DNSP Inputs Capex'!G36","v":4400.4740453999984},{"$f":"'DNSP Inputs Capex'!H36","v":3960.4266408600015}]
[null,{"$f":"B28*B29","v":719315.52411465021},{"$f":"C28*C29","v":883765.12026616407},{"$f":"D28*D29","v":434478.15633826307},{"$f":"E28*E29","v":425894.42663860554},{"$f":"F28*F29","v":411784.85413272912}]
[]
[]
[]
[]
[]
["Detailed calculations"]
[]
["Public Lighting Capex Costs","Year",2016,null,null,null,null,null,null,null,null,null,null,null,null,null,null,null,null,null,"Year",{"$f":"C38+1","v":2017},null,null,null,null,null,null,null,null,null,null,null,null,null,null,null,null,null,"Year",{"$f":"V38+1","v":2018},null,null,null,null,null,null,null,null,null,null,null,null,null,null,null,null,null,"Year",{"$f":"AO38+1","v":2019},null,null,null,null,null,null,null,null,null,null,null,null,null,null,null,null,null,"Year",{"$f":"BH38+1","v":2020}]
[{"$f":"'DNSP Inputs Capex'!$C$5","v":"Real 2015 $ "}]
[]
[null,"Urban",null,null,null,null,null,"Rural",null,null,null,null,null,"Remote",null,null,null,null,null,null,"Urban",null,null,null,null,null,"Rural",null,null,null,null,null,"Remote",null,null,null,null,null,null,"Urban",null,null,null,null,null,"Rural",null,null,null,null,null,"Remote",null,null,null,null,null,null,"Urban",null,null,null,null,null,"Rural",null,null,null,null,null,"Remote",null,null,null,null,null,null,"Urban",null,null,null,null,null,"Rural",null,null,null,null,null,"Remote"]
[]
[null,"Unit rate","Number","Hours","Cost","Annualised",null,"Unit rate","Number","Hours","Cost","Annualised",null,"Unit rate","Number","Hours","Cost","Annualised",null,null,"Unit rate","Number","Hours","Cost","Annualised",null,"Unit rate","Number","Hours","Cost","Annualised",null,"Unit rate","Number","Hours","Cost","Annualised",null,null,"Unit rate","Number","Hours","Cost","Annualised",null,"Unit rate","Number","Hours","Cost","Annualised",null,"Unit rate","Number","Hours","Cost","Annualised",null,null,"Unit rate","Number","Hours","Cost","Annualised",null,"Unit rate","Number","Hours","Cost","Annualised",null,"Unit rate","Number","Hours","Cost","Annualised",null,null,"Unit rate","Number","Hours","Cost","Annualised",null,"Unit rate","Number","Hours","Cost","Annualised",null,"Unit rate","Number","Hours","Cost","Annualised"]
[null,null,null,null,null," cost",null,null,null,null,null," cost",null,null,null,null,null," cost",null,null,null,null,null,null," cost",null,null,null,null,null," cost",null,null,null,null,null," cost",null,null,null,null,null,null," cost",null,null,null,null,null," cost",null,null,null,null,null," cost",null,null,null,null,null,null," cost",null,null,null,null,null," cost",null,null,null,null,null," cost",null,null,null,null,null,null," cost",null,null,null,null,null," cost",null,null,null,null,null," cost"]
["MV80"]
["Luminaires "]
["Material & misc",{"$f":"'DNSP Inputs Capex'!$D$21+'DNSP Inputs Capex'!$D$22","v":199.39839474407904},{"$f":"'DNSP Inputs Capex'!$D$24","v":15.36},null,{"$f":"B47*C47","v":3062.7593432690542},{"$f":"(E47+E48+E49)/C47","v":327.20047807741236},null,{"$f":"('DNSP Inputs Capex'!$D$21+'DNSP Inputs Capex'!$D$22)*(1+'DNSP Inputs Capex'!$D$11)","v":209.36831448128299},{"$f":"'DNSP Inputs Capex'!$D$25","v":12.48},null,{"$f":"H47*I47","v":2612.9165647264117},{"$f":"(K47+K48+K49)/I47","v":374.46668341105789},null,{"$f":"('DNSP Inputs Capex'!$D$21+'DNSP Inputs Capex'!$D$22)*(1+'DNSP Inputs Capex'!$D$11)","v":209.36831448128299},{"$f":"'DNSP Inputs Capex'!$D$26","v":9.6},null,{"$f":"N47*O47","v":2009.9358190203166},{"$f":"(Q47+Q48+Q49)/O47","v":423.99619408999041},null,null,{"$f":"'DNSP Inputs Capex'!$E$21+'DNSP Inputs Capex'!$E$22","v":199.39839474407904},{"$f":"'DNSP Inputs Capex'!$E$24","v":15.36},null,{"$f":"U47*V47","v":3062.7593432690542},{"$f":"(X47+X48+X49)/V47","v":327.58589474407904},null,{"$f":"('DNSP Inputs Capex'!$E$21+'DNSP Inputs Capex'!$E$22)*(1+'DNSP Inputs Capex'!$E$11)","v":209.36831448128299},{"$f":"'DNSP Inputs Capex'!$E$25","v":12.48},null,{"$f":"AA47*AB47","v":2612.9165647264117},{"$f":"(AD47+AD48+AD49)/AB47","v":375.73572135229279},null,{"$f":"('DNSP Inputs Capex'!$E$21+'DNSP Inputs Capex'!$E$22)*(1+'DNSP Inputs Capex'!$E$11)","v":209.36831448128299},{"$f":"'DNSP Inputs Capex'!$E$26","v":9.6},null,{"$f":"AG47*AH47","v":2009.9358190203166},{"$f":"(AJ47+AJ48+AJ49)/AH47","v":425.64594341359577},null,null,{"$f":"'DNSP Inputs Capex'!$F$21+'DNSP Inputs Capex'!$F$22","v":199.39839474407904},{"$f":"'DNSP Inputs Capex'!$F$24","v":15.36},null,{"$f":"AN47*AO47","v":3062.7593432690542},{"$f":"(AQ47+AQ48+AQ49)/AO47","v":328.41185620241242},null,{"$f":"('DNSP Inputs Capex'!$F$21+'DNSP Inputs Capex'!$F$22)*(1+'DNSP Inputs Capex'!$F$11)","v":209.36831448128299},{"$f":"'DNSP Inputs Capex'!$F$25","v":12.48},null,{"$f":"AT47*AU47","v":2612.9165647264117},{"$f":"(AW47+AW48+AW49)/AU47","v":377.40613430150705},null,{"$f":"('DNSP Inputs Capex'!$F$21+'DNSP Inputs Capex'!$F$22)*(1+'DNSP Inputs Capex'!$F$11)","v":209.36831448128299},{"$f":"'DNSP Inputs Capex'!$F$26","v":9.6},null,{"$f":"AZ47*BA47","v":2009.9358190203166},{"$f":"(BC47+BC48+BC49)/BA47","v":427.81748024757417},null,null,{"$f":"'DNSP Inputs Capex'!$G$21+'DNSP Inputs Capex'!$G$22","v":199.39839474407904},{"$f":"'DNSP Inputs Capex'!$G$24","v":15.36},null,{"$f":"BG47*BH47","v":3062.7593432690542},{"$f":"(BJ47+BJ48+BJ49)/BH47","v":329.42348543241241},null,{"$f":"('DNSP Inputs Capex'!$G$21+'DNSP Inputs Capex'!$G$22)*(1+'DNSP Inputs Capex'!$G$11)","v":209.36831448128299},{"$f":"'DNSP Inputs Capex'!$G$25","v":12.48},null,{"$f":"BM47*BN47","v":2612.9165647264117},{"$f":"(BP47+BP48+BP49)/BN47","v":379.30893091278409},null,{"$f":"('DNSP Inputs Capex'!$G$21+'DNSP Inputs Capex'!$G$22)*(1+'DNSP Inputs Capex'!$G$11)","v":209.36831448128299},{"$f":"'DNSP Inputs Capex'!$G$26","v":9.6},null,{"$f":"BS47*BT47","v":2009.9358190203166},{"$f":"(BV47+BV48+BV49)/BT47","v":430.29111584223443},null,null,{"$f":"'DNSP Inputs Capex'!$H$21+'DNSP Inputs Capex'!$H$22","v":199.39839474407904},{"$f":"'DNSP Inputs Capex'!$H$24","v":15.36},null,{"$f":"BZ47*CA47","v":3062.7593432690542},{"$f":"(CC47+CC48+CC49)/CA47","v":330.5086601074334},null,{"$f":"('DNSP Inputs Capex'!$H$21+'DNSP Inputs Capex'!$H$22)*(1+'DNSP Inputs Capex'!$H$11)","v":209.36831448128299},{"$f":"'DNSP Inputs Capex'!$H$25","v":12.48},null,{"$f":"CF47*CG47","v":2612.9165647264117},{"$f":"(CI47+CI48+CI49)/CG47","v":381.32493078300081},null,{"$f":"('DNSP Inputs Capex'!$H$21+'DNSP Inputs Capex'!$H$22)*(1+'DNSP Inputs Capex'!$H$11)","v":209.36831448128299},{"$f":"'DNSP Inputs Capex'!$H$26","v":9.6},null,{"$f":"CL47*CM47","v":2009.9358190203166},{"$f":"(CO47+CO48+CO49)/CM47","v":432.91191567351603}]
["Crew costs",{"$f":"'DNSP Inputs Capex'!$D$12","v":100},{"$f":"'DNSP Inputs Capex'!$D$23","v":2},{"$f":"'DNSP Inputs Capex'!$D$15","v":8},{"$f":"B48*C48*D48","v":1600},null,null,{"$f":"'DNSP Inputs Capex'!$D$12","v":100},{"$f":"'DNSP Inputs Capex'!$D$23","v":2},{"$f":"'DNSP Inputs Capex'!$D$15","v":8},{"$f":"H48*I48*J48","v":1600},null,null,{"$f":"'DNSP Inputs Capex'!$D$12","v":100},{"$f":"'DNSP Inputs Capex'!$D$23","v":2},{"$f":"'DNSP Inputs Capex'!$D$15","v":8},{"$f":"N48*O48*P48","v":1600},null,null,null,{"$f":"'DNSP Inputs Capex'!$E$12","v":100.37},{"$f":"'DNSP Inputs Capex'!$E$23","v":2},{"$f":"'DNSP Inputs Capex'!$E$15","v":8},{"$f":"U48*V48*W48","v":1605.92},null,null,{"$f":"'DNSP Inputs Capex'!$E$12","v":100.37},{"$f":"'DNSP Inputs Capex'!$E$23","v":2},{"$f":"'DNSP Inputs Capex'!$E$15","v":8},{"$f":"AA48*AB48*AC48","v":1605.92},null,null,{"$f":"'DNSP Inputs Capex'!$E$12","v":100.37},{"$f":"'DNSP Inputs Capex'!$E$23","v":2},{"$f":"'DNSP Inputs Capex'!$E$15","v":8},{"$f":"AG48*AH48*AI48","v":1605.92},null,null,null,{"$f":"'DNSP Inputs Capex'!$F$12","v":101.16292300000001},{"$f":"'DNSP Inputs Capex'!$F$23","v":2},{"$f":"'DNSP Inputs Capex'!$F$15","v":8},{"$f":"AN48*AO48*AP48","v":1618.6067680000001},null,null,{"$f":"'DNSP Inputs Capex'!$F$12","v":101.16292300000001},{"$f":"'DNSP Inputs Capex'!$F$23","v":2},{"$f":"'DNSP Inputs Capex'!$F$15","v":8},{"$f":"AT48*AU48*AV48","v":1618.6067680000001},null,null,{"$f":"'DNSP Inputs Capex'!$F$12","v":101.16292300000001},{"$f":"'DNSP Inputs Capex'!$F$23","v":2},{"$f":"'DNSP Inputs Capex'!$F$15","v":8},{"$f":"AZ48*BA48*BB48","v":1618.6067680000001},null,null,null,{"$f":"'DNSP Inputs Capex'!$G$12","v":102.13408706080001},{"$f":"'DNSP Inputs Capex'!$G$23","v":2},{"$f":"'DNSP Inputs Capex'!$G$15","v":8},{"$f":"BG48*BH48*BI48","v":1634.1453929728002},null,null,{"$f":"'DNSP Inputs Capex'!$G$12","v":102.13408706080001},{"$f":"'DNSP Inputs Capex'!$G$23","v":2},{"$f":"'DNSP Inputs Capex'!$G$15","v":8},{"$f":"BM48*BN48*BO48","v":1634.1453929728002},null,null,{"$f":"'DNSP Inputs Capex'!$G$12","v":102.13408706080001},{"$f":"'DNSP Inputs Capex'!$G$23","v":2},{"$f":"'DNSP Inputs Capex'!$G$15","v":8},{"$f":"BS48*BT48*BU48","v":1634.1453929728002},null,null,null,{"$f":"'DNSP Inputs Capex'!$H$12","v":103.17585474882017},{"$f":"'DNSP Inputs Capex'!$H$23","v":2},{"$f":"'DNSP Inputs Capex'!$H$15","v":8},{"$f":"BZ48*CA48*CB48","v":1650.8136759811227},null,null,{"$f":"'DNSP Inputs Capex'!$H$12","v":103.17585474882017},{"$f":"'DNSP Inputs Capex'!$H$23","v":2},{"$f":"'DNSP Inputs Capex'!$H$15","v":8},{"$f":"CF48*CG48*CH48","v":1650.8136759811227},null,null,{"$f":"'DNSP Inputs Capex'!$H$12","v":103.17585474882017},{"$f":"'DNSP Inputs Capex'!$H$23","v":2},{"$f":"'DNSP Inputs Capex'!$H$15","v":8},{"$f":"CL48*CM48*CN48","v":1650.8136759811227}]
["Elevated platform vehicle costs",{"$f":"'DNSP Inputs Capex'!$D$13","v":45.38},1,{"$f":"'DNSP Inputs Capex'!$D$15","v":8},{"$f":"B49*C49*D49","v":363.04},null,null,{"$f":"'DNSP Inputs Capex'!$D$14","v":57.553455530448915},1,{"$f":"'DNSP Inputs Capex'!$D$15","v":8},{"$f":"H49*I49*J49","v":460.42764424359132},null,null,{"$f":"'DNSP Inputs Capex'!$D$14","v":57.553455530448915},1,{"$f":"'DNSP Inputs Capex'!$D$15","v":8},{"$f":"N49*O49*P49","v":460.42764424359132},null,null,null,{"$f":"'DNSP Inputs Capex'!$E$13","v":45.38},1,{"$f":"'DNSP Inputs Capex'!$E$15","v":8},{"$f":"U49*V49*W49","v":363.04},null,null,{"$f":"'DNSP Inputs Capex'!$E$14","v":58.793154718775355},1,{"$f":"'DNSP Inputs Capex'!$E$15","v":8},{"$f":"AA49*AB49*AC49","v":470.34523775020284},null,null,{"$f":"'DNSP Inputs Capex'!$E$14","v":58.793154718775355},1,{"$f":"'DNSP Inputs Capex'!$E$15","v":8},{"$f":"AG49*AH49*AI49","v":470.34523775020284},null,null,null,{"$f":"'DNSP Inputs Capex'!$F$13","v":45.38},1,{"$f":"'DNSP Inputs Capex'!$F$15","v":8},{"$f":"AN49*AO49*AP49","v":363.04},null,null,{"$f":"'DNSP Inputs Capex'!$F$14","v":59.813152919549431},1,{"$f":"'DNSP Inputs Capex'!$F$15","v":8},{"$f":"AT49*AU49*AV49","v":478.50522335639545},null,null,{"$f":"'DNSP Inputs Capex'!$F$14","v":59.813152919549431},1,{"$f":"'DNSP Inputs Capex'!$F$15","v":8},{"$f":"AZ49*BA49*BB49","v":478.50522335639545},null,null,null,{"$f":"'DNSP Inputs Capex'!$G$13","v":45.38},1,{"$f":"'DNSP Inputs Capex'!$G$15","v":8},{"$f":"BG49*BH49*BI49","v":363.04},null,null,{"$f":"'DNSP Inputs Capex'!$G$14","v":60.839187511541702},1,{"$f":"'DNSP Inputs Capex'!$G$15","v":8},{"$f":"BM49*BN49*BO49","v":486.71350009233362},null,null,{"$f":"'DNSP Inputs Capex'!$G$14","v":60.839187511541702},1,{"$f":"'DNSP Inputs Capex'!$G$15","v":8},{"$f":"BS49*BT49*BU49","v":486.71350009233362},null,null,null,{"$f":"'DNSP Inputs Capex'!$H$13","v":45.38},1,{"$f":"'DNSP Inputs Capex'!$H$15","v":8},{"$f":"BZ49*CA49*CB49","v":363.04},null,null,{"$f":"'DNSP Inputs Capex'!$H$14","v":61.900611933039357},1,{"$f":"'DNSP Inputs Capex'!$H$15","v":8},{"$f":"CF49*CG49*CH49","v":495.20489546431486},null,null,{"$f":"'DNSP Inputs Capex'!$H$14","v":61.900611933039357},1,{"$f":"'DNSP Inputs Capex'!$H$15","v":8},{"$f":"CL49*CM49*CN49","v":495.20489546431486}]
[{"$f":"'DNSP Inputs Capex'!$A$28","v":"Other Capex unit costs Describe :………………………"},null,null,null,null,{"$f":"'DNSP Inputs Capex'!$D$28","v":0},null,null,null,null,null,{"$f":"'DNSP Inputs Capex'!$D$28","v":0},null,null,null,null,null,{"$f":"'DNSP Inputs Capex'!$D$28","v":0},null,null,null,null,null,null,{"$f":"'DNSP Inputs Capex'!$E$28","v":0},null,null,null,null,null,{"$f":"'DNSP Inputs Capex'!$E$28","v":0},null,null,null,null,null,{"$f":"'DNSP Inputs Capex'!$E$28","v":0},null,null,null,null,null,null,{"$f":"'DNSP Inputs Capex'!$F$28","v":0},null,null,null,null,null,{"$f":"'DNSP Inputs Capex'!$F$28","v":0},null,null,null,null,null,{"$f":"'DNSP Inputs Capex'!$F$28","v":0},null,null,null,null,null,null,{"$f":"'DNSP Inputs Capex'!$G$28","v":0},null,null,null,null,null,{"$f":"'DNSP Inputs Capex'!$G$28","v":0},null,null,null,null,null,{"$f":"'DNSP Inputs Capex'!$G$28","v":0},null,null,null,null,null,null,{"$f":"'DNSP Inputs Capex'!$H$28","v":0},null,null,null,null,null,{"$f":"'DNSP Inputs Capex'!$H$28","v":0},null,null,null,null,null,{"$f":"'DNSP Inputs Capex'!$H$28","v":0}]
[null,null,null,null,null,{"$f":"SUM(F47,F50)","v":327.20047807741236},null,null,null,null,null,{"$f":"SUM(L47,L50)","v":374.46668341105789},null,null,null,null,null,{"$f":"SUM(R47,R50)","v":423.99619408999041},null,null,null,null,null,null,{"$f":"SUM(Y47,Y50)","v":327.58589474407904},null,null,null,null,null,{"$f":"SUM(AE47,AE50)","v":375.73572135229279},null,null,null,null,null,{"$f":"SUM(AK47,AK50)","v":425.64594341359577},null,null,null,null,null,null,{"$f":"SUM(AR47,AR50)","v":328.41185620241242},null,null,null,null,null,{"$f":"SUM(AX47,AX50)","v":377.40613430150705},null,null,null,null,null,{"$f":"SUM(BD47,BD50)","v":427.81748024757417},null,null,null,null,null,null,{"$f":"SUM(BK47,BK50)","v":329.42348543241241},null,null,null,null,null,{"$f":"SUM(BQ47,BQ50)","v":379.30893091278409},null,null,null,null,null,{"$f":"SUM(BW47,BW50)","v":430.29111584223443},null,null,null,null,null,null,{"$f":"SUM(CD47,CD50)","v":330.5086601074334},null,null,null,null,null,{"$f":"SUM(CJ47,CJ50)","v":381.32493078300081},null,null,null,null,null,{"$f":"SUM(CP47,CP50)","v":432.91191567351603}]
[]
["Number of luminaires replaced",null,null,null,null,{"$f":"'DNSP Inputs Capex'!$D$31","v":100.63440873431328},null,null,null,null,null,{"$f":"'DNSP Inputs Capex'!$D$32","v":25.170232142387331},null,null,null,null,null,{"$f":"'DNSP Inputs Capex'!$D$33","v":7.7147894499501142},null,null,null,null,null,null,{"$f":"'DNSP Inputs Capex'!$E$31","v":78.715474545234187},null,null,null,null,null,{"$f":"'DNSP Inputs Capex'!$E$32","v":19.687965502262315},null,null,null,null,null,{"$f":"'DNSP Inputs Capex'!$E$33","v":6.0344500475246257},null,null,null,null,null,null,{"$f":"'DNSP Inputs Capex'!$F$31","v":71.392016050106818},null,null,null,null,null,{"$f":"'DNSP Inputs Capex'!$F$32","v":17.856254532566496},null,null,null,null,null,{"$f":"'DNSP Inputs Capex'!$F$33","v":5.4730223902655668},null,null,null,null,null,null,{"$f":"'DNSP Inputs Capex'!$G$31","v":64.269320197396652},null,null,null,null,null,{"$f":"'DNSP Inputs Capex'!$G$32","v":16.074757424895751},null,null,null,null,null,{"$f":"'DNSP Inputs Capex'!$G$33","v":4.9269855077439368},null,null,null,null,null,null,{"$f":"'DNSP Inputs Capex'!$H$31","v":57.438710010429382},null,null,null,null,null,{"$f":"'DNSP Inputs Capex'!$H$32","v":14.366315488956802},null,null,null,null,null,{"$f":"'DNSP Inputs Capex'!$H$33","v":4.4033403642000186}]
[]
["Capex",null,null,null,null,{"$f":"F51*F53","v":32927.626648905025},null,null,null,null,null,{"$f":"L51*L53","v":9425.4133510461907},null,null,null,null,null,{"$f":"R51*R53","v":3271.0413649844591},null,null,null,null,null,null,{"$f":"Y51*Y53","v":25786.07915910532},null,null,null,null,null,{"$f":"AE51*AE53","v":7397.4719199515866},null,null,null,null,null,{"$f":"AK51*AK53","v":2568.5391834608372},null,null,null,null,null,null,{"$f":"AR51*AR53","v":23445.984509048001},null,null,null,null,null,{"$f":"AX51*AX53","v":6739.0599962396846},null,null,null,null,null,{"$f":"BD51*BD53","v":2341.4546483419704},null,null,null,null,null,null,{"$f":"BK51*BK53","v":21171.823465798145},null,null,null,null,null,{"$f":"BQ51*BQ53","v":6097.2990535195449},null,null,null,null,null,{"$f":"BW51*BW53","v":2120.0380918656565},null,null,null,null,null,null,{"$f":"CD51*CD53","v":18983.991083846438},null,null,null,null,null,{"$f":"CJ51*CJ53","v":5478.2342594332049},null,null,null,null,null,{"$f":"CP51*CP53","v":1906.2585124283478}]
[]
[]
["S-HP 150"]
["Luminaires "]
["Material & misc",{"$f":"'DNSP Inputs Capex'!$D$42+'DNSP Inputs Capex'!$D$43","v":237.00351976977214},{"$f":"'DNSP Inputs Capex'!$D$45","v":15.36},null,{"$f":"B60*C60","v":3640.3740636636999},{"$f":"(E60+E61+E62)/C60","v":371.14594452521425},null,{"$f":"('DNSP Inputs Capex'!$D$42+'DNSP Inputs Capex'!$D$43)*(1+'DNSP Inputs Capex'!$D$11)","v":248.85369575826076},{"$f":"'DNSP Inputs Capex'!$D$46","v":12.48},null,{"$f":"H60*I60","v":3105.6941230630941},{"$f":"(K60+K61+K62)/I60","v":413.9520646880357},null,{"$f":"('DNSP Inputs Capex'!$D$42+'DNSP Inputs Capex'!$D$43)*(1+'DNSP Inputs Capex'!$D$11)","v":248.85369575826076},{"$f":"'DNSP Inputs Capex'!$D$47","v":9.6},null,{"$f":"N60*O60","v":2388.9954792793033},{"$f":"(Q60+Q61+Q62)/O60","v":463.48157536696817},null,null,{"$f":"'DNSP Inputs Capex'!$E$42+'DNSP Inputs Capex'!$E$43","v":237.00351976977214},{"$f":"'DNSP Inputs Capex'!$E$45","v":15.36},null,{"$f":"U60*V60","v":3640.3740636636999},{"$f":"(X60+X61+X62)/V60","v":372.17703785246761},null,{"$f":"('DNSP Inputs Capex'!$E$42+'DNSP Inputs Capex'!$E$43)*(1+'DNSP Inputs Capex'!$E$11)","v":248.85369575826076},{"$f":"'DNSP Inputs Capex'!$E$46","v":12.48},null,{"$f":"AA60*AB60","v":3105.6941230630941},{"$f":"(AD60+AD61+AD62)/AB60","v":415.2211026292706},null,{"$f":"('DNSP Inputs Capex'!$E$42+'DNSP Inputs Capex'!$E$43)*(1+'DNSP Inputs Capex'!$E$11)","v":248.85369575826076},{"$f":"'DNSP Inputs Capex'!$E$47","v":9.6},null,{"$f":"AG60*AH60","v":2388.9954792793033},{"$f":"(AJ60+AJ61+AJ62)/AH60","v":465.13132469057354},null,null,{"$f":"'DNSP Inputs Capex'!$F$42+'DNSP Inputs Capex'!$F$43","v":237.00351976977214},{"$f":"'DNSP Inputs Capex'!$F$45","v":15.36},null,{"$f":"AN60*AO60","v":3640.3740636636999},{"$f":"(AQ60+AQ61+AQ62)/AO60","v":373.53424837370414},null,{"$f":"('DNSP Inputs Capex'!$F$42+'DNSP Inputs Capex'!$F$43)*(1+'DNSP Inputs Capex'!$F$11)","v":248.85369575826076},{"$f":"'DNSP Inputs Capex'!$F$46","v":12.48},null,{"$f":"AT60*AU60","v":3105.6941230630941},{"$f":"(AW60+AW61+AW62)/AU60","v":416.89151557848476},null,{"$f":"('DNSP Inputs Capex'!$F$42+'DNSP Inputs Capex'!$F$43)*(1+'DNSP Inputs Capex'!$F$11)","v":248.85369575826076},{"$f":"'DNSP Inputs Capex'!$F$47","v":9.6},null,{"$f":"AZ60*BA60","v":2388.9954792793033},{"$f":"(BC60+BC61+BC62)/BA60","v":467.30286152455193},null,null,{"$f":"'DNSP Inputs Capex'!$G$42+'DNSP Inputs Capex'!$G$43","v":237.00351976977214},{"$f":"'DNSP Inputs Capex'!$G$45","v":15.36},null,{"$f":"BG60*BH60","v":3640.3740636636999},{"$f":"(BJ60+BJ61+BJ62)/BH60","v":375.08027062036678},null,{"$f":"('DNSP Inputs Capex'!$G$42+'DNSP Inputs Capex'!$G$43)*(1+'DNSP Inputs Capex'!$G$11)","v":248.85369575826076},{"$f":"'DNSP Inputs Capex'!$G$46","v":12.48},null,{"$f":"BM60*BN60","v":3105.6941230630941},{"$f":"(BP60+BP61+BP62)/BN60","v":418.7943121897618},null,{"$f":"('DNSP Inputs Capex'!$G$42+'DNSP Inputs Capex'!$G$43)*(1+'DNSP Inputs Capex'!$G$11)","v":248.85369575826076},{"$f":"'DNSP Inputs Capex'!$G$47","v":9.6},null,{"$f":"BS60*BT60","v":2388.9954792793033},{"$f":"(BV60+BV61+BV62)/BT60","v":469.77649711921225},null,null,{"$f":"'DNSP Inputs Capex'!$H$42+'DNSP Inputs Capex'!$H$43","v":237.00351976977214},{"$f":"'DNSP Inputs Capex'!$H$45","v":15.36},null,{"$f":"BZ60*CA60","v":3640.3740636636999},{"$f":"(CC60+CC61+CC62)/CA60","v":376.71827051491783},null,{"$f":"('DNSP Inputs Capex'!$H$42+'DNSP Inputs Capex'!$H$43)*(1+'DNSP Inputs Capex'!$H$11)","v":248.85369575826076},{"$f":"'DNSP Inputs Capex'!$H$46","v":12.48},null,{"$f":"CF60*CG60","v":3105.6941230630941},{"$f":"(CI60+CI61+CI62)/CG60","v":420.81031205997851},null,{"$f":"('DNSP Inputs Capex'!$H$42+'DNSP Inputs Capex'!$H$43)*(1+'DNSP Inputs Capex'!$H$11)","v":248.85369575826076},{"$f":"'DNSP Inputs Capex'!$H$47","v":9.6},null,{"$f":"CL60*CM60","v":2388.9954792793033},{"$f":"(CO60+CO61+CO62)/CM60","v":472.39729695049385}]
["Crew costs",{"$f":"'DNSP Inputs Capex'!$D$12","v":100},{"$f":"'DNSP Inputs Capex'!$D$44","v":2},{"$f":"'DNSP Inputs Capex'!$D$15","v":8},{"$f":"D61*C61*B61","v":1600},null,null,{"$f":"'DNSP Inputs Capex'!$D$12","v":100},{"$f":"'DNSP Inputs Capex'!$D$44","v":2},{"$f":"'DNSP Inputs Capex'!$D$15","v":8},{"$f":"J61*I61*H61","v":1600},null,null,{"$f":"'DNSP Inputs Capex'!$D$12","v":100},{"$f":"'DNSP Inputs Capex'!$D$44","v":2},{"$f":"'DNSP Inputs Capex'!$D$15","v":8},{"$f":"P61*O61*N61","v":1600},null,null,null,{"$f":"'DNSP Inputs Capex'!$E$12","v":100.37},{"$f":"'DNSP Inputs Capex'!$E$44","v":2},{"$f":"'DNSP Inputs Capex'!$E$15","v":8},{"$f":"W61*V61*U61","v":1605.92},null,null,{"$f":"'DNSP Inputs Capex'!$E$12","v":100.37},{"$f":"'DNSP Inputs Capex'!$E$44","v":2},{"$f":"'DNSP Inputs Capex'!$E$15","v":8},{"$f":"AC61*AB61*AA61","v":1605.92},null,null,{"$f":"'DNSP Inputs Capex'!$E$12","v":100.37},{"$f":"'DNSP Inputs Capex'!$E$44","v":2},{"$f":"'DNSP Inputs Capex'!$E$15","v":8},{"$f":"AI61*AH61*AG61","v":1605.92},null,null,null,{"$f":"'DNSP Inputs Capex'!$F$12","v":101.16292300000001},{"$f":"'DNSP Inputs Capex'!$F$44","v":2},{"$f":"'DNSP Inputs Capex'!$F$15","v":8},{"$f":"AP61*AO61*AN61","v":1618.6067680000001},null,null,{"$f":"'DNSP Inputs Capex'!$F$12","v":101.16292300000001},{"$f":"'DNSP Inputs Capex'!$F$44","v":2},{"$f":"'DNSP Inputs Capex'!$F$15","v":8},{"$f":"AV61*AU61*AT61","v":1618.6067680000001},null,null,{"$f":"'DNSP Inputs Capex'!$F$12","v":101.16292300000001},{"$f":"'DNSP Inputs Capex'!$F$44","v":2},{"$f":"'DNSP Inputs Capex'!$F$15","v":8},{"$f":"BB61*BA61*AZ61","v":1618.6067680000001},null,null,null,{"$f":"'DNSP Inputs Capex'!$G$12","v":102.13408706080001},{"$f":"'DNSP Inputs Capex'!$G$44","v":2},{"$f":"'DNSP Inputs Capex'!$G$15","v":8},{"$f":"BI61*BH61*BG61","v":1634.1453929728002},null,null,{"$f":"'DNSP Inputs Capex'!$G$12","v":102.13408706080001},{"$f":"'DNSP Inputs Capex'!$G$44","v":2},{"$f":"'DNSP Inputs Capex'!$G$15","v":8},{"$f":"BO61*BN61*BM61","v":1634.1453929728002},null,null,{"$f":"'DNSP Inputs Capex'!$G$12","v":102.13408706080001},{"$f":"'DNSP Inputs Capex'!$G$44","v":2},{"$f":"'DNSP Inputs Capex'!$G$15","v":8},{"$f":"BU61*BT61*BS61","v":1634.1453929728002},null,null,null,{"$f":"'DNSP Inputs Capex'!$H$12","v":103.17585474882017},{"$f":"'DNSP Inputs Capex'!$H$44","v":2},{"$f":"'DNSP Inputs Capex'!$H$15","v":8},{"$f":"CB61*CA61*BZ61","v":1650.8136759811227},null,null,{"$f":"'DNSP Inputs Capex'!$H$12","v":103.17585474882017},{"$f":"'DNSP Inputs Capex'!$H$44","v":2},{"$f":"'DNSP Inputs Capex'!$H$15","v":8},{"$f":"CH61*CG61*CF61","v":1650.8136759811227},null,null,{"$f":"'DNSP Inputs Capex'!$H$12","v":103.17585474882017},{"$f":"'DNSP Inputs Capex'!$H$44","v":2},{"$f":"'DNSP Inputs Capex'!$H$15","v":8},{"$f":"CN61*CM61*CL61","v":1650.8136759811227}]
["Elevated platform vehicle costs",{"$f":"'DNSP Inputs Capex'!$D$14","v":57.553455530448915},1,{"$f":"'DNSP Inputs Capex'!$D$15","v":8},{"$f":"B62*C62*D62","v":460.42764424359132},null,null,{"$f":"'DNSP Inputs Capex'!$D$14","v":57.553455530448915},1,{"$f":"'DNSP Inputs Capex'!$D$15","v":8},{"$f":"H62*I62*J62","v":460.42764424359132},null,null,{"$f":"'DNSP Inputs Capex'!$D$14","v":57.553455530448915},1,{"$f":"'DNSP Inputs Capex'!$D$15","v":8},{"$f":"N62*O62*P62","v":460.42764424359132},null,null,null,{"$f":"'DNSP Inputs Capex'!$E$14","v":58.793154718775355},1,{"$f":"'DNSP Inputs Capex'!$E$15","v":8},{"$f":"U62*V62*W62","v":470.34523775020284},null,null,{"$f":"'DNSP Inputs Capex'!$E$14","v":58.793154718775355},1,{"$f":"'DNSP Inputs Capex'!$E$15","v":8},{"$f":"AA62*AB62*AC62","v":470.34523775020284},null,null,{"$f":"'DNSP Inputs Capex'!$E$14","v":58.793154718775355},1,{"$f":"'DNSP Inputs Capex'!$E$15","v":8},{"$f":"AG62*AH62*AI62","v":470.34523775020284},null,null,null,{"$f":"'DNSP Inputs Capex'!$F$14","v":59.813152919549431},1,{"$f":"'DNSP Inputs Capex'!$F$15","v":8},{"$f":"AN62*AO62*AP62","v":478.50522335639545},null,null,{"$f":"'DNSP Inputs Capex'!$F$14","v":59.813152919549431},1,{"$f":"'DNSP Inputs Capex'!$F$15","v":8},{"$f":"AT62*AU62*AV62","v":478.50522335639545},null,null,{"$f":"'DNSP Inputs Capex'!$F$14","v":59.813152919549431},1,{"$f":"'DNSP Inputs Capex'!$F$15","v":8},{"$f":"AZ62*BA62*BB62","v":478.50522335639545},null,null,null,{"$f":"'DNSP Inputs Capex'!$G$14","v":60.839187511541702},1,{"$f":"'DNSP Inputs Capex'!$G$15","v":8},{"$f":"BG62*BH62*BI62","v":486.71350009233362},null,null,{"$f":"'DNSP Inputs Capex'!$G$14","v":60.839187511541702},1,{"$f":"'DNSP Inputs Capex'!$G$15","v":8},{"$f":"BM62*BN62*BO62","v":486.71350009233362},null,null,{"$f":"'DNSP Inputs Capex'!$G$14","v":60.839187511541702},1,{"$f":"'DNSP Inputs Capex'!$G$15","v":8},{"$f":"BS62*BT62*BU62","v":486.71350009233362},null,null,null,{"$f":"'DNSP Inputs Capex'!$H$14","v":61.900611933039357},1,{"$f":"'DNSP Inputs Capex'!$H$15","v":8},{"$f":"BZ62*CA62*CB62","v":495.20489546431486},null,null,{"$f":"'DNSP Inputs Capex'!$H$14","v":61.900611933039357},1,{"$f":"'DNSP Inputs Capex'!$H$15","v":8},{"$f":"CF62*CG62*CH62","v":495.20489546431486},null,null,{"$f":"'DNSP Inputs Capex'!$H$14","v":61.900611933039357},1,{"$f":"'DNSP Inputs Capex'!$H$15","v":8},{"$f":"CL62*CM62*CN62","v":495.20489546431486}]
[{"$f":"'DNSP Inputs Capex'!$A$49","v":"Other Capex unit costs Describe :………………………"},null,null,null,null,{"$f":"'DNSP Inputs Capex'!$D$49","v":0},null,null,null,null,null,{"$f":"'DNSP Inputs Capex'!$D$49","v":0},null,null,null,null,null,{"$f":"'DNSP Inputs Capex'!$D$49","v":0},null,null,null,null,null,null,{"$f":"'DNSP Inputs Capex'!$E$49","v":0},null,null,null,null,null,{"$f":"'DNSP Inputs Capex'!$E$49","v":0},null,null,null,null,null,{"$f":"'DNSP Inputs Capex'!$E$49","v":0},null,null,null,null,null,null,{"$f":"'DNSP Inputs Capex'!$F$49","v":0},null,null,null,null,null,{"$f":"'DNSP Inputs Capex'!$F$49","v":0},null,null,null,null,null,{"$f":"'DNSP Inputs Capex'!$F$49","v":0},null,null,null,null,null,null,{"$f":"'DNSP Inputs Capex'!$G$49","v":0},null,null,null,null,null,{"$f":"'DNSP Inputs Capex'!$G$49","v":0},null,null,null,null,null,{"$f":"'DNSP Inputs Capex'!$G$49","v":0},null,null,null,null,null,null,{"$f":"'DNSP Inputs Capex'!$H$49","v":0},null,null,null,null,null,{"$f":"'DNSP Inputs Capex'!$H$49","v":0},null,null,null,null,null,{"$f":"'DNSP Inputs Capex'!$H$49","v":0}]
[null,null,null,null,null,{"$f":"SUM(F60,F63)","v":371.14594452521425},null,null,null,null,null,{"$f":"SUM(L60,L63)","v":413.9520646880357},null,null,null,null,null,{"$f":"SUM(R60,R63)","v":463.48157536696817},null,null,null,null,null,null,{"$f":"SUM(Y60,Y63)","v":372.17703785246761},null,null,null,null,null,{"$f":"SUM(AE60,AE63)","v":415.2211026292706},null,null,null,null,null,{"$f":"SUM(AK60,AK63)","v":465.13132469057354},null,null,null,null,null,null,{"$f":"SUM(AR60,AR63)","v":373.53424837370414},null,null,null,null,null,{"$f":"SUM(AX60,AX63)","v":416.89151557848476},null,null,null,null,null,{"$f":"SUM(BD60,BD63)","v":467.30286152455193},null,null,null,null,null,null,{"$f":"SUM(BK60,BK63)","v":375.08027062036678},null,null,null,null,null,{"$f":"SUM(BQ60,BQ63)","v":418.7943121897618},null,null,null,null,null,{"$f":"SUM(BW60,BW63)","v":469.77649711921225},null,null,null,null,null,null,{"$f":"SUM(CD60,CD63)","v":376.71827051491783},null,null,null,null,null,{"$f":"SUM(CJ60,CJ63)","v":420.81031205997851},null,null,null,null,null,{"$f":"SUM(CP60,CP63)","v":472.39729695049385}]
[]
["Number of luminaires replaced",null,null,null,null,{"$f":"'DNSP Inputs Capex'!$D$52","v":792.54257852620617},null,null,null,null,null,{"$f":"'DNSP Inputs Capex'!$D$53","v":186.90913602504438},null,null,null,null,null,{"$f":"'DNSP Inputs Capex'!$D$54","v":30.227306465946675},null,null,null,null,null,null,{"$f":"'DNSP Inputs Capex'!$E$52","v":795.11859290278471},null,null,null,null,null,{"$f":"'DNSP Inputs Capex'!$E$53","v":187.51664991080901},null,null,null,null,null,{"$f":"'DNSP Inputs Capex'!$E$54","v":30.325554784877777},null,null,null,null,null,null,{"$f":"'DNSP Inputs Capex'!$F$52","v":797.68464065943488},null,null,null,null,null,{"$f":"'DNSP Inputs Capex'!$F$53","v":188.1218133205609},null,null,null,null,null,{"$f":"'DNSP Inputs Capex'!$F$54","v":30.423422980288496},null,null,null,null,null,null,{"$f":"'DNSP Inputs Capex'!$G$52","v":800.24064305489208},null,null,null,null,null,{"$f":"'DNSP Inputs Capex'!$G$53","v":188.72460768436815},null,null,null,null,null,{"$f":"'DNSP Inputs Capex'!$G$54","v":30.520908049013578},null,null,null,null,null,null,{"$f":"'DNSP Inputs Capex'!$H$52","v":802.78652303368165},null,null,null,null,null,{"$f":"'DNSP Inputs Capex'!$H$53","v":189.32501482986675},null,null,null,null,null,{"$f":"'DNSP Inputs Capex'!$H$54","v":30.61800705218322}]
[]
["Capex",null,null,null,null,{"$f":"F64*F66","v":294148.96388355759},null,null,null,null,null,{"$f":"L64*L66","v":77371.422766624033},null,null,null,null,null,{"$f":"R64*R66","v":14009.799619937108},null,null,null,null,null,null,{"$f":"Y64*Y66","v":295924.88264798047},null,null,null,null,null,{"$f":"AE64*AE66","v":77860.870137313032},null,null,null,null,null,{"$f":"AK64*AK66","v":14105.365469066761},null,null,null,null,null,null,{"$f":"AR64*AR66","v":297962.53268797026},null,null,null,null,null,{"$f":"AX64*AX66","v":78426.387868581412},null,null,null,null,null,{"$f":"BD64*BD66","v":14216.952616060626},null,null,null,null,null,null,{"$f":"BK64*BK66","v":300154.47695844527},null,null,null,null,null,{"$f":"BQ64*BQ66","v":79036.79226845759},null,null,null,null,null,{"$f":"BW64*BW66","v":14338.005272163169},null,null,null,null,null,null,{"$f":"CD64*CD66","v":302424.3505499328},null,null,null,null,null,{"$f":"CJ64*CJ66","v":79669.918571316288},null,null,null,null,null,{"$f":"CP64*CP66","v":14463.863769462512}]
[]
[]
["S-HP 250"]
["Luminaires "]
["Material & misc",{"$f":"'DNSP Inputs Capex'!$D$60+'DNSP Inputs Capex'!$D$61","v":240.5028334976532},{"$f":"'DNSP Inputs Capex'!$D$63","v":15.36},null,{"$f":"B73*C73","v":3694.1235225239529},{"$f":"(E73+E74+E75)/C73","v":374.64525825309528},null,{"$f":"('DNSP Inputs Capex'!$D$60+'DNSP Inputs Capex'!$D$61)*(1+'DNSP Inputs Capex'!$D$11)","v":252.52797517253586},{"$f":"'DNSP Inputs Capex'!$D$64","v":12.48},null,{"$f":"H73*I73","v":3151.5491301532475},{"$f":"(K73+K74+K75)/I73","v":417.62634410231078},null,{"$f":"('DNSP Inputs Capex'!$D$60+'DNSP Inputs Capex'!$D$61)*(1+'DNSP Inputs Capex'!$D$11)","v":252.52797517253586},{"$f":"'DNSP Inputs Capex'!$D$65","v":9.6},null,{"$f":"N73*O73","v":2424.268561656344},{"$f":"(Q73+Q74+Q75)/O73","v":467.15585478124325},null,null,{"$f":"'DNSP Inputs Capex'!$E$60+'DNSP Inputs Capex'!$E$61","v":240.5028334976532},{"$f":"'DNSP Inputs Capex'!$E$63","v":15.36},null,{"$f":"U73*V73","v":3694.1235225239529},{"$f":"(X73+X74+X75)/V73","v":375.67635158034864},null,{"$f":"('DNSP Inputs Capex'!$E$60+'DNSP Inputs Capex'!$E$61)*(1+'DNSP Inputs Capex'!$E$11)","v":252.52797517253586},{"$f":"'DNSP Inputs Capex'!$E$64","v":12.48},null,{"$f":"AA73*AB73","v":3151.5491301532475},{"$f":"(AD73+AD74+AD75)/AB73","v":418.89538204354568},null,{"$f":"('DNSP Inputs Capex'!$E$60+'DNSP Inputs Capex'!$E$61)*(1+'DNSP Inputs Capex'!$E$11)","v":252.52797517253586},{"$f":"'DNSP Inputs Capex'!$E$65","v":9.6},null,{"$f":"AG73*AH73","v":2424.268561656344},{"$f":"(AJ73+AJ74+AJ75)/AH73","v":468.80560410484861},null,null,{"$f":"'DNSP Inputs Capex'!$F$60+'DNSP Inputs Capex'!$F$61","v":240.5028334976532},{"$f":"'DNSP Inputs Capex'!$F$63","v":15.36},null,{"$f":"AN73*AO73","v":3694.1235225239529},{"$f":"(AQ73+AQ74+AQ75)/AO73","v":377.03356210158523},null,{"$f":"('DNSP Inputs Capex'!$F$60+'DNSP Inputs Capex'!$F$61)*(1+'DNSP Inputs Capex'!$F$11)","v":252.52797517253586},{"$f":"'DNSP Inputs Capex'!$F$64","v":12.48},null,{"$f":"AT73*AU73","v":3151.5491301532475},{"$f":"(AW73+AW74+AW75)/AU73","v":420.56579499275983},null,{"$f":"('DNSP Inputs Capex'!$F$60+'DNSP Inputs Capex'!$F$61)*(1+'DNSP Inputs Capex'!$F$11)","v":252.52797517253586},{"$f":"'DNSP Inputs Capex'!$F$65","v":9.6},null,{"$f":"AZ73*BA73","v":2424.268561656344},{"$f":"(BC73+BC74+BC75)/BA73","v":470.97714093882701},null,null,{"$f":"'DNSP Inputs Capex'!$G$60+'DNSP Inputs Capex'!$G$61","v":240.5028334976532},{"$f":"'DNSP Inputs Capex'!$G$63","v":15.36},null,{"$f":"BG73*BH73","v":3694.1235225239529},{"$f":"(BJ73+BJ74+BJ75)/BH73","v":378.57958434824781},null,{"$f":"('DNSP Inputs Capex'!$G$60+'DNSP Inputs Capex'!$G$61)*(1+'DNSP Inputs Capex'!$G$11)","v":252.52797517253586},{"$f":"'DNSP Inputs Capex'!$G$64","v":12.48},null,{"$f":"BM73*BN73","v":3151.5491301532475},{"$f":"(BP73+BP74+BP75)/BN73","v":422.46859160403699},null,{"$f":"('DNSP Inputs Capex'!$G$60+'DNSP Inputs Capex'!$G$61)*(1+'DNSP Inputs Capex'!$G$11)","v":252.52797517253586},{"$f":"'DNSP Inputs Capex'!$G$65","v":9.6},null,{"$f":"BS73*BT73","v":2424.268561656344},{"$f":"(BV73+BV74+BV75)/BT73","v":473.45077653348733},null,null,{"$f":"'DNSP Inputs Capex'!$H$60+'DNSP Inputs Capex'!$H$61","v":240.5028334976532},{"$f":"'DNSP Inputs Capex'!$H$63","v":15.36},null,{"$f":"BZ73*CA73","v":3694.1235225239529},{"$f":"(CC73+CC74+CC75)/CA73","v":380.21758424279886},null,{"$f":"('DNSP Inputs Capex'!$H$60+'DNSP Inputs Capex'!$H$61)*(1+'DNSP Inputs Capex'!$H$11)","v":252.52797517253586},{"$f":"'DNSP Inputs Capex'!$H$64","v":12.48},null,{"$f":"CF73*CG73","v":3151.5491301532475},{"$f":"(CI73+CI74+CI75)/CG73","v":424.48459147425359},null,{"$f":"('DNSP Inputs Capex'!$H$60+'DNSP Inputs Capex'!$H$61)*(1+'DNSP Inputs Capex'!$H$11)","v":252.52797517253586},{"$f":"'DNSP Inputs Capex'!$H$65","v":9.6},null,{"$f":"CL73*CM73","v":2424.268561656344},{"$f":"(CO73+CO74+CO75)/CM73","v":476.07157636476893}]
["Crew costs",{"$f":"'DNSP Inputs Capex'!$D$12","v":100},{"$f":"'DNSP Inputs Capex'!$D$62","v":2},{"$f":"'DNSP Inputs Capex'!$D$15","v":8},{"$f":"D74*C74*B74","v":1600},null,null,{"$f":"'DNSP Inputs Capex'!$D$12","v":100},{"$f":"'DNSP Inputs Capex'!$D$62","v":2},{"$f":"'DNSP Inputs Capex'!$D$15","v":8},{"$f":"J74*I74*H74","v":1600},null,null,{"$f":"'DNSP Inputs Capex'!$D$12","v":100},{"$f":"'DNSP Inputs Capex'!$D$62","v":2},{"$f":"'DNSP Inputs Capex'!$D$15","v":8},{"$f":"P74*O74*N74","v":1600},null,null,null,{"$f":"'DNSP Inputs Capex'!$E$12","v":100.37},{"$f":"'DNSP Inputs Capex'!$E$62","v":2},{"$f":"'DNSP Inputs Capex'!$E$15","v":8},{"$f":"W74*V74*U74","v":1605.92},null,null,{"$f":"'DNSP Inputs Capex'!$E$12","v":100.37},{"$f":"'DNSP Inputs Capex'!$E$62","v":2},{"$f":"'DNSP Inputs Capex'!$E$15","v":8},{"$f":"AC74*AB74*AA74","v":1605.92},null,null,{"$f":"'DNSP Inputs Capex'!$E$12","v":100.37},{"$f":"'DNSP Inputs Capex'!$E$62","v":2},{"$f":"'DNSP Inputs Capex'!$E$15","v":8},{"$f":"AI74*AH74*AG74","v":1605.92},null,null,null,{"$f":"'DNSP Inputs Capex'!$F$12","v":101.16292300000001},{"$f":"'DNSP Inputs Capex'!$F$62","v":2},{"$f":"'DNSP Inputs Capex'!$F$15","v":8},{"$f":"AP74*AO74*AN74","v":1618.6067680000001},null,null,{"$f":"'DNSP Inputs Capex'!$F$12","v":101.16292300000001},{"$f":"'DNSP Inputs Capex'!$F$62","v":2},{"$f":"'DNSP Inputs Capex'!$F$15","v":8},{"$f":"AV74*AU74*AT74","v":1618.6067680000001},null,null,{"$f":"'DNSP Inputs Capex'!$F$12","v":101.16292300000001},{"$f":"'DNSP Inputs Capex'!$F$62","v":2},{"$f":"'DNSP Inputs Capex'!$F$15","v":8},{"$f":"BB74*BA74*AZ74","v":1618.6067680000001},null,null,null,{"$f":"'DNSP Inputs Capex'!$G$12","v":102.13408706080001},{"$f":"'DNSP Inputs Capex'!$G$62","v":2},{"$f":"'DNSP Inputs Capex'!$G$15","v":8},{"$f":"BI74*BH74*BG74","v":1634.1453929728002},null,null,{"$f":"'DNSP Inputs Capex'!$G$12","v":102.13408706080001},{"$f":"'DNSP Inputs Capex'!$G$62","v":2},{"$f":"'DNSP Inputs Capex'!$G$15","v":8},{"$f":"BO74*BN74*BM74","v":1634.1453929728002},null,null,{"$f":"'DNSP Inputs Capex'!$G$12","v":102.13408706080001},{"$f":"'DNSP Inputs Capex'!$G$62","v":2},{"$f":"'DNSP Inputs Capex'!$G$15","v":8},{"$f":"BU74*BT74*BS74","v":1634.1453929728002},null,null,null,{"$f":"'DNSP Inputs Capex'!$H$12","v":103.17585474882017},{"$f":"'DNSP Inputs Capex'!$H$62","v":2},{"$f":"'DNSP Inputs Capex'!$H$15","v":8},{"$f":"CB74*CA74*BZ74","v":1650.8136759811227},null,null,{"$f":"'DNSP Inputs Capex'!$H$12","v":103.17585474882017},{"$f":"'DNSP Inputs Capex'!$H$62","v":2},{"$f":"'DNSP Inputs Capex'!$H$15","v":8},{"$f":"CH74*CG74*CF74","v":1650.8136759811227},null,null,{"$f":"'DNSP Inputs Capex'!$H$12","v":103.17585474882017},{"$f":"'DNSP Inputs Capex'!$H$62","v":2},{"$f":"'DNSP Inputs Capex'!$H$15","v":8},{"$f":"CN74*CM74*CL74","v":1650.8136759811227}]
["Elevated platform vehicle costs",{"$f":"'DNSP Inputs Capex'!$D$14","v":57.553455530448915},1,{"$f":"'DNSP Inputs Capex'!$D$15","v":8},{"$f":"B75*C75*D75","v":460.42764424359132},null,null,{"$f":"'DNSP Inputs Capex'!$D$14","v":57.553455530448915},1,{"$f":"'DNSP Inputs Capex'!$D$15","v":8},{"$f":"H75*I75*J75","v":460.42764424359132},null,null,{"$f":"'DNSP Inputs Capex'!$D$14","v":57.553455530448915},1,{"$f":"'DNSP Inputs Capex'!$D$15","v":8},{"$f":"N75*O75*P75","v":460.42764424359132},null,null,null,{"$f":"'DNSP Inputs Capex'!$E$14","v":58.793154718775355},1,{"$f":"'DNSP Inputs Capex'!$E$15","v":8},{"$f":"U75*V75*W75","v":470.34523775020284},null,null,{"$f":"'DNSP Inputs Capex'!$E$14","v":58.793154718775355},1,{"$f":"'DNSP Inputs Capex'!$E$15","v":8},{"$f":"AA75*AB75*AC75","v":470.34523775020284},null,null,{"$f":"'DNSP Inputs Capex'!$E$14","v":58.793154718775355},1,{"$f":"'DNSP Inputs Capex'!$E$15","v":8},{"$f":"AG75*AH75*AI75","v":470.34523775020284},null,null,null,{"$f":"'DNSP Inputs Capex'!$F$14","v":59.813152919549431},1,{"$f":"'DNSP Inputs Capex'!$F$15","v":8},{"$f":"AN75*AO75*AP75","v":478.50522335639545},null,null,{"$f":"'DNSP Inputs Capex'!$F$14","v":59.813152919549431},1,{"$f":"'DNSP Inputs Capex'!$F$15","v":8},{"$f":"AT75*AU75*AV75","v":478.50522335639545},null,null,{"$f":"'DNSP Inputs Capex'!$F$14","v":59.813152919549431},1,{"$f":"'DNSP Inputs Capex'!$F$15","v":8},{"$f":"AZ75*BA75*BB75","v":478.50522335639545},null,null,null,{"$f":"'DNSP Inputs Capex'!$G$14","v":60.839187511541702},1,{"$f":"'DNSP Inputs Capex'!$G$15","v":8},{"$f":"BG75*BH75*BI75","v":486.71350009233362},null,null,{"$f":"'DNSP Inputs Capex'!$G$14","v":60.839187511541702},1,{"$f":"'DNSP Inputs Capex'!$G$15","v":8},{"$f":"BM75*BN75*BO75","v":486.71350009233362},null,null,{"$f":"'DNSP Inputs Capex'!$G$14","v":60.839187511541702},1,{"$f":"'DNSP Inputs Capex'!$G$15","v":8},{"$f":"BS75*BT75*BU75","v":486.71350009233362},null,null,null,{"$f":"'DNSP Inputs Capex'!$H$14","v":61.900611933039357},1,{"$f":"'DNSP Inputs Capex'!$H$15","v":8},{"$f":"BZ75*CA75*CB75","v":495.20489546431486},null,null,{"$f":"'DNSP Inputs Capex'!$H$14","v":61.900611933039357},1,{"$f":"'DNSP Inputs Capex'!$H$15","v":8},{"$f":"CF75*CG75*CH75","v":495.20489546431486},null,null,{"$f":"'DNSP Inputs Capex'!$H$14","v":61.900611933039357},1,{"$f":"'DNSP Inputs Capex'!$H$15","v":8},{"$f":"CL75*CM75*CN75","v":495.20489546431486}]
[{"$f":"'DNSP Inputs Capex'!$A$67","v":"Other Capex unit costs Describe :………………………"},null,null,null,null,{"$f":"'DNSP Inputs Capex'!$D$67","v":0},null,null,null,null,null,{"$f":"'DNSP Inputs Capex'!$D$67","v":0},null,null,null,null,null,{"$f":"'DNSP Inputs Capex'!$D$67","v":0},null,null,null,null,null,null,{"$f":"'DNSP Inputs Capex'!$E$67","v":0},null,null,null,null,null,{"$f":"'DNSP Inputs Capex'!$E$67","v":0},null,null,null,null,null,{"$f":"'DNSP Inputs Capex'!$E$67","v":0},null,null,null,null,null,null,{"$f":"'DNSP Inputs Capex'!$F$67","v":0},null,null,null,null,null,{"$f":"'DNSP Inputs Capex'!$F$67","v":0},null,null,null,null,null,{"$f":"'DNSP Inputs Capex'!$F$67","v":0},null,null,null,null,null,null,{"$f":"'DNSP Inputs Capex'!$G$67","v":0},null,null,null,null,null,{"$f":"'DNSP Inputs Capex'!$G$67","v":0},null,null,null,null,null,{"$f":"'DNSP Inputs Capex'!$G$67","v":0},null,null,null,null,null,null,{"$f":"'DNSP Inputs Capex'!$H$67","v":0},null,null,null,null,null,{"$f":"'DNSP Inputs Capex'!$H$67","v":0},null,null,null,null,null,{"$f":"'DNSP Inputs Capex'!$H$67","v":0}]
[null,null,null,null,null,{"$f":"SUM(F73,F76)","v":374.64525825309528},null,null,null,null,null,{"$f":"SUM(L73,L76)","v":417.62634410231078},null,null,null,null,null,{"$f":"SUM(R73,R76)","v":467.15585478124325},null,null,null,null,null,null,{"$f":"SUM(Y73,Y76)","v":375.67635158034864},null,null,null,null,null,{"$f":"SUM(AE73,AE76)","v":418.89538204354568},null,null,null,null,null,{"$f":"SUM(AK73,AK76)","v":468.80560410484861},null,null,null,null,null,null,{"$f":"SUM(AR73,AR76)","v":377.03356210158523},null,null,null,null,null,{"$f":"SUM(AX73,AX76)","v":420.56579499275983},null,null,null,null,null,{"$f":"SUM(BD73,BD76)","v":470.97714093882701},null,null,null,null,null,null,{"$f":"SUM(BK73,BK76)","v":378.57958434824781},null,null,null,null,null,{"$f":"SUM(BQ73,BQ76)","v":422.46859160403699},null,null,null,null,null,{"$f":"SUM(BW73,BW76)","v":473.45077653348733},null,null,null,null,null,null,{"$f":"SUM(CD73,CD76)","v":380.21758424279886},null,null,null,null,null,{"$f":"SUM(CJ73,CJ76)","v":424.48459147425359},null,null,null,null,null,{"$f":"SUM(CP73,CP76)","v":476.07157636476893}]
[]
["Number of luminaires replaced",null,null,null,null,{"$f":"'DNSP Inputs Capex'!$D$70","v":358.36646809299202},null,null,null,null,null,{"$f":"'DNSP Inputs Capex'!$D$71","v":94.907057633031485},null,null,null,null,null,{"$f":"'DNSP Inputs Capex'!$D$72","v":10.684663080711516},null,null,null,null,null,null,{"$f":"'DNSP Inputs Capex'!$E$70","v":370.5170094684147},null,null,null,null,null,{"$f":"'DNSP Inputs Capex'!$E$71","v":98.12491486372123},null,null,null,null,null,{"$f":"'DNSP Inputs Capex'!$E$72","v":11.046930347332424},null,null,null,null,null,null,{"$f":"'DNSP Inputs Capex'!$F$70","v":383.07951923056049},null,null,null,null,null,{"$f":"'DNSP Inputs Capex'!$F$71","v":101.45187467766819},null,null,null,null,null,{"$f":"'DNSP Inputs Capex'!$F$72","v":11.42148041327734},null,null,null,null,null,null,{"$f":"'DNSP Inputs Capex'!$G$70","v":396.0679653127429},null,null,null,null,null,{"$f":"'DNSP Inputs Capex'!$G$71","v":104.89163623640124},null,null,null,null,null,{"$f":"'DNSP Inputs Capex'!$G$72","v":11.808729731185331},null,null,null,null,null,null,{"$f":"'DNSP Inputs Capex'!$H$70","v":409.49678923597679},null,null,null,null,null,{"$f":"'DNSP Inputs Capex'!$H$71","v":108.44802412282446},null,null,null,null,null,{"$f":"'DNSP Inputs Capex'!$H$72","v":12.209108873668942}]
[]
["Capex",null,null,null,null,{"$f":"F77*F79","v":134260.29798794864},null,null,null,null,null,{"$f":"L77*L79","v":39635.687508790244},null,null,null,null,null,{"$f":"R77*R79","v":4991.4029145193799},null,null,null,null,null,null,{"$f":"Y77*Y79","v":139194.47831555552},null,null,null,null,null,{"$f":"AE77*AE79","v":41104.073699828899},null,null,null,null,null,{"$f":"AK77*AK79","v":5178.862854985362},null,null,null,null,null,null,{"$f":"AR77*AR79","v":144433.83570366094},null,null,null,null,null,{"$f":"AX77*AX79","v":42667.18832731936},null,null,null,null,null,{"$f":"BD77*BD79","v":5379.2561903341739},null,null,null,null,null,null,{"$f":"BK77*BK79","v":149943.24568175443},null,null,null,null,null,{"$f":"BQ77*BQ79","v":44313.421831835403},null,null,null,null,null,{"$f":"BW77*BW79","v":5590.8522611037743},null,null,null,null,null,null,{"$f":"CD77*CD79","v":155697.87995848566},null,null,null,null,null,{"$f":"CJ77*CJ79","v":46034.515215967142},null,null,null,null,null,{"$f":"CP77*CP79","v":5812.4097074966621}]
[]
[]
["Dedicated poles"]
["Material",{"$f":"'DNSP Inputs Capex'!$D$78","v":1598.2516292542912},{"$f":"'DNSP Inputs Capex'!$D$79","v":3.84},null,{"$f":"C85*B85","v":6137.2862563364779},{"$f":"(E85+E86+E87)/C85","v":2109.4599625876244},null,{"$f":"'DNSP Inputs Capex'!$D$78*(1+'DNSP Inputs Capex'!$D$11)","v":1678.1642107170057},{"$f":"'DNSP Inputs Capex'!$D$79","v":3.84},null,{"$f":"I85*H85","v":6444.1505691533021},{"$f":"(K85+K86+K87)/I85","v":2214.7339097387744},null,{"$f":"'DNSP Inputs Capex'!$D$78*(1+'DNSP Inputs Capex'!$D$11)","v":1678.1642107170057},{"$f":"'DNSP Inputs Capex'!$D$79","v":3.84},null,{"$f":"O85*N85","v":6444.1505691533021},{"$f":"(Q85+Q86+Q87)/O85","v":2214.7339097387744},null,null,{"$f":"'DNSP Inputs Capex'!$E$78","v":1598.2516292542912},{"$f":"'DNSP Inputs Capex'!$E$79","v":3.84},null,{"$f":"V85*U85","v":6137.2862563364779},{"$f":"(X85+X86+X87)/V85","v":2111.0016292542914},null,{"$f":"'DNSP Inputs Capex'!$E$78*(1+'DNSP Inputs Capex'!$E$11)","v":1678.1642107170057},{"$f":"'DNSP Inputs Capex'!$E$79","v":3.84},null,{"$f":"AB85*AA85","v":6444.1505691533021},{"$f":"(AD85+AD86+AD87)/AB85","v":2218.8582830477881},null,{"$f":"'DNSP Inputs Capex'!$E$78*(1+'DNSP Inputs Capex'!$E$11)","v":1678.1642107170057},{"$f":"'DNSP Inputs Capex'!$E$79","v":3.84},null,{"$f":"AH85*AG85","v":6444.1505691533021},{"$f":"(AJ85+AJ86+AJ87)/AH85","v":2218.8582830477881},null,null,{"$f":"'DNSP Inputs Capex'!$F$78","v":1598.2516292542912},{"$f":"'DNSP Inputs Capex'!$F$79","v":3.84},null,{"$f":"AO85*AN85","v":6137.2862563364779},{"$f":"(AQ85+AQ86+AQ87)/AO85","v":2114.3054750876245},null,{"$f":"'DNSP Inputs Capex'!$F$78*(1+'DNSP Inputs Capex'!$F$11)","v":1678.1642107170057},{"$f":"'DNSP Inputs Capex'!$F$79","v":3.84},null,{"$f":"AU85*AT85","v":6444.1505691533021},{"$f":"(AW85+AW86+AW87)/AU85","v":2224.2871251327333},null,{"$f":"'DNSP Inputs Capex'!$F$78*(1+'DNSP Inputs Capex'!$F$11)","v":1678.1642107170057},{"$f":"'DNSP Inputs Capex'!$F$79","v":3.84},null,{"$f":"BA85*AZ85","v":6444.1505691533021},{"$f":"(BC85+BC86+BC87)/BA85","v":2224.2871251327333},null,null,{"$f":"'DNSP Inputs Capex'!$G$78","v":1598.2516292542912},{"$f":"'DNSP Inputs Capex'!$G$79","v":3.84},null,{"$f":"BH85*BG85","v":6137.2862563364779},{"$f":"(BJ85+BJ86+BJ87)/BH85","v":2118.3519920076246},null,{"$f":"'DNSP Inputs Capex'!$G$78*(1+'DNSP Inputs Capex'!$G$11)","v":1678.1642107170057},{"$f":"'DNSP Inputs Capex'!$G$79","v":3.84},null,{"$f":"BN85*BM85","v":6444.1505691533021},{"$f":"(BP85+BP86+BP87)/BN85","v":2230.4712141193845},null,{"$f":"'DNSP Inputs Capex'!$G$78*(1+'DNSP Inputs Capex'!$G$11)","v":1678.1642107170057},{"$f":"'DNSP Inputs Capex'!$G$79","v":3.84},null,{"$f":"BT85*BS85","v":6444.1505691533021},{"$f":"(BV85+BV86+BV87)/BT85","v":2230.4712141193845},null,null,{"$f":"'DNSP Inputs Capex'!$H$78","v":1598.2516292542912},{"$f":"'DNSP Inputs Capex'!$H$79","v":3.84},null,{"$f":"CA85*BZ85","v":6137.2862563364779},{"$f":"(CC85+CC86+CC87)/CA85","v":2122.6926907077086},null,{"$f":"'DNSP Inputs Capex'!$H$78*(1+'DNSP Inputs Capex'!$H$11)","v":1678.1642107170057},{"$f":"'DNSP Inputs Capex'!$H$79","v":3.84},null,{"$f":"CG85*CF85","v":6444.1505691533021},{"$f":"(CI85+CI86+CI87)/CG85","v":2237.0232136975883},null,{"$f":"'DNSP Inputs Capex'!$H$78*(1+'DNSP Inputs Capex'!$H$11)","v":1678.1642107170057},{"$f":"'DNSP Inputs Capex'!$H$79","v":3.84},null,{"$f":"CM85*CL85","v":6444.1505691533021},{"$f":"(CO85+CO86+CO87)/CM85","v":2237.0232136975883}]
["Crew costs",{"$f":"'DNSP Inputs Capex'!$D$12","v":100},{"$f":"'DNSP Inputs Capex'!$D$23","v":2},{"$f":"'DNSP Inputs Capex'!$D$15","v":8},{"$f":"B86*C86*D86","v":1600},null,null,{"$f":"'DNSP Inputs Capex'!$D$12","v":100},{"$f":"'DNSP Inputs Capex'!$D$23","v":2},{"$f":"'DNSP Inputs Capex'!$D$15","v":8},{"$f":"H86*I86*J86","v":1600},null,null,{"$f":"'DNSP Inputs Capex'!$D$12","v":100},{"$f":"'DNSP Inputs Capex'!$D$23","v":2},{"$f":"'DNSP Inputs Capex'!$D$15","v":8},{"$f":"N86*O86*P86","v":1600},null,null,null,{"$f":"'DNSP Inputs Capex'!$E$12","v":100.37},{"$f":"'DNSP Inputs Capex'!$E$23","v":2},{"$f":"'DNSP Inputs Capex'!$E$15","v":8},{"$f":"U86*V86*W86","v":1605.92},null,null,{"$f":"'DNSP Inputs Capex'!$E$12","v":100.37},{"$f":"'DNSP Inputs Capex'!$E$23","v":2},{"$f":"'DNSP Inputs Capex'!$E$15","v":8},{"$f":"AA86*AB86*AC86","v":1605.92},null,null,{"$f":"'DNSP Inputs Capex'!$E$12","v":100.37},{"$f":"'DNSP Inputs Capex'!$E$23","v":2},{"$f":"'DNSP Inputs Capex'!$E$15","v":8},{"$f":"AG86*AH86*AI86","v":1605.92},null,null,null,{"$f":"'DNSP Inputs Capex'!$F$12","v":101.16292300000001},{"$f":"'DNSP Inputs Capex'!$F$23","v":2},{"$f":"'DNSP Inputs Capex'!$F$15","v":8},{"$f":"AN86*AO86*AP86","v":1618.6067680000001},null,null,{"$f":"'DNSP Inputs Capex'!$F$12","v":101.16292300000001},{"$f":"'DNSP Inputs Capex'!$F$23","v":2},{"$f":"'DNSP Inputs Capex'!$F$15","v":8},{"$f":"AT86*AU86*AV86","v":1618.6067680000001},null,null,{"$f":"'DNSP Inputs Capex'!$F$12","v":101.16292300000001},{"$f":"'DNSP Inputs Capex'!$F$23","v":2},{"$f":"'DNSP Inputs Capex'!$F$15","v":8},{"$f":"AZ86*BA86*BB86","v":1618.6067680000001},null,null,null,{"$f":"'DNSP Inputs Capex'!$G$12","v":102.13408706080001},{"$f":"'DNSP Inputs Capex'!$G$23","v":2},{"$f":"'DNSP Inputs Capex'!$G$15","v":8},{"$f":"BG86*BH86*BI86","v":1634.1453929728002},null,null,{"$f":"'DNSP Inputs Capex'!$G$12","v":102.13408706080001},{"$f":"'DNSP Inputs Capex'!$G$23","v":2},{"$f":"'DNSP Inputs Capex'!$G$15","v":8},{"$f":"BM86*BN86*BO86","v":1634.1453929728002},null,null,{"$f":"'DNSP Inputs Capex'!$G$12","v":102.13408706080001},{"$f":"'DNSP Inputs Capex'!$G$23","v":2},{"$f":"'DNSP Inputs Capex'!$G$15","v":8},{"$f":"BS86*BT86*BU86","v":1634.1453929728002},null,null,null,{"$f":"'DNSP Inputs Capex'!$H$12","v":103.17585474882017},{"$f":"'DNSP Inputs Capex'!$H$23","v":2},{"$f":"'DNSP Inputs Capex'!$H$15","v":8},{"$f":"BZ86*CA86*CB86","v":1650.8136759811227},null,null,{"$f":"'DNSP Inputs Capex'!$H$12","v":103.17585474882017},{"$f":"'DNSP Inputs Capex'!$H$23","v":2},{"$f":"'DNSP Inputs Capex'!$H$15","v":8},{"$f":"CF86*CG86*CH86","v":1650.8136759811227},null,null,{"$f":"'DNSP Inputs Capex'!$H$12","v":103.17585474882017},{"$f":"'DNSP Inputs Capex'!$H$23","v":2},{"$f":"'DNSP Inputs Capex'!$H$15","v":8},{"$f":"CL86*CM86*CN86","v":1650.8136759811227}]
["Elevated platform vehicle costs",{"$f":"'DNSP Inputs Capex'!$D$13","v":45.38},1,{"$f":"'DNSP Inputs Capex'!$D$15","v":8},{"$f":"B87*C87*D87","v":363.04},null,null,{"$f":"'DNSP Inputs Capex'!$D$14","v":57.553455530448915},1,{"$f":"'DNSP Inputs Capex'!$D$15","v":8},{"$f":"H87*I87*J87","v":460.42764424359132},null,null,{"$f":"'DNSP Inputs Capex'!$D$14","v":57.553455530448915},1,{"$f":"'DNSP Inputs Capex'!$D$15","v":8},{"$f":"N87*O87*P87","v":460.42764424359132},null,null,null,{"$f":"'DNSP Inputs Capex'!$E$13","v":45.38},1,{"$f":"'DNSP Inputs Capex'!$E$15","v":8},{"$f":"U87*V87*W87","v":363.04},null,null,{"$f":"'DNSP Inputs Capex'!$E$14","v":58.793154718775355},1,{"$f":"'DNSP Inputs Capex'!$E$15","v":8},{"$f":"AA87*AB87*AC87","v":470.34523775020284},null,null,{"$f":"'DNSP Inputs Capex'!$E$14","v":58.793154718775355},1,{"$f":"'DNSP Inputs Capex'!$E$15","v":8},{"$f":"AG87*AH87*AI87","v":470.34523775020284},null,null,null,{"$f":"'DNSP Inputs Capex'!$F$13","v":45.38},1,{"$f":"'DNSP Inputs Capex'!$F$15","v":8},{"$f":"AN87*AO87*AP87","v":363.04},null,null,{"$f":"'DNSP Inputs Capex'!$F$14","v":59.813152919549431},1,{"$f":"'DNSP Inputs Capex'!$F$15","v":8},{"$f":"AT87*AU87*AV87","v":478.50522335639545},null,null,{"$f":"'DNSP Inputs Capex'!$F$14","v":59.813152919549431},1,{"$f":"'DNSP Inputs Capex'!$F$15","v":8},{"$f":"AZ87*BA87*BB87","v":478.50522335639545},null,null,null,{"$f":"'DNSP Inputs Capex'!$G$13","v":45.38},1,{"$f":"'DNSP Inputs Capex'!$G$15","v":8},{"$f":"BG87*BH87*BI87","v":363.04},null,null,{"$f":"'DNSP Inputs Capex'!$G$14","v":60.839187511541702},1,{"$f":"'DNSP Inputs Capex'!$G$15","v":8},{"$f":"BM87*BN87*BO87","v":486.71350009233362},null,null,{"$f":"'DNSP Inputs Capex'!$G$14","v":60.839187511541702},1,{"$f":"'DNSP Inputs Capex'!$G$15","v":8},{"$f":"BS87*BT87*BU87","v":486.71350009233362},null,null,null,{"$f":"'DNSP Inputs Capex'!$H$13","v":45.38},1,{"$f":"'DNSP Inputs Capex'!$H$15","v":8},{"$f":"BZ87*CA87*CB87","v":363.04},null,null,{"$f":"'DNSP Inputs Capex'!$H$14","v":61.900611933039357},1,{"$f":"'DNSP Inputs Capex'!$H$15","v":8},{"$f":"CF87*CG87*CH87","v":495.20489546431486},null,null,{"$f":"'DNSP Inputs Capex'!$H$14","v":61.900611933039357},1,{"$f":"'DNSP Inputs Capex'!$H$15","v":8},{"$f":"CL87*CM87*CN87","v":495.20489546431486}]
[{"$f":"'DNSP Inputs Capex'!$A$67","v":"Other Capex unit costs Describe :………………………"},null,null,null,null,{"$f":"'DNSP Inputs Capex'!$D$83","v":0},null,null,null,null,null,{"$f":"'DNSP Inputs Capex'!$D$83","v":0},null,null,null,null,null,{"$f":"'DNSP Inputs Capex'!$D$83","v":0},null,null,null,null,null,null,{"$f":"'DNSP Inputs Capex'!$E$83","v":0},null,null,null,null,null,{"$f":"'DNSP Inputs Capex'!$E$83","v":0},null,null,null,null,null,{"$f":"'DNSP Inputs Capex'!$E$83","v":0},null,null,null,null,null,null,{"$f":"'DNSP Inputs Capex'!$F$83","v":0},null,null,null,null,null,{"$f":"'DNSP Inputs Capex'!$F$83","v":0},null,null,null,null,null,{"$f":"'DNSP Inputs Capex'!$F$83","v":0},null,null,null,null,null,null,{"$f":"'DNSP Inputs Capex'!$G$83","v":0},null,null,null,null,null,{"$f":"'DNSP Inputs Capex'!$G$83","v":0},null,null,null,null,null,{"$f":"'DNSP Inputs Capex'!$G$83","v":0},null,null,null,null,null,null,{"$f":"'DNSP Inputs Capex'!$H$83","v":0},null,null,null,null,null,{"$f":"'DNSP Inputs Capex'!$H$83","v":0},null,null,null,null,null,{"$f":"'DNSP Inputs Capex'!$H$83","v":0}]
[null,null,null,null,null,{"$f":"SUM(F85,F88)","v":2109.4599625876244},null,null,null,null,null,{"$f":"SUM(L85,L88)","v":2214.7339097387744},null,null,null,null,null,{"$f":"SUM(R85,R88)","v":2214.7339097387744},null,null,null,null,null,null,{"$f":"SUM(Y85,Y88)","v":2111.0016292542914},null,null,null,null,null,{"$f":"SUM(AE85,AE88)","v":2218.8582830477881},null,null,null,null,null,{"$f":"SUM(AK85,AK88)","v":2218.8582830477881},null,null,null,null,null,null,{"$f":"SUM(AR85,AR88)","v":2114.3054750876245},null,null,null,null,null,{"$f":"SUM(AX85,AX88)","v":2224.2871251327333},null,null,null,null,null,{"$f":"SUM(BD85,BD88)","v":2224.2871251327333},null,null,null,null,null,null,{"$f":"SUM(BK85,BK88)","v":2118.3519920076246},null,null,null,null,null,{"$f":"SUM(BQ85,BQ88)","v":2230.4712141193845},null,null,null,null,null,{"$f":"SUM(BW85,BW88)","v":2230.4712141193845},null,null,null,null,null,null,{"$f":"SUM(CD85,CD88)","v":2122.6926907077086},null,null,null,null,null,{"$f":"SUM(CJ85,CJ88)","v":2237.0232136975883},null,null,null,null,null,{"$f":"SUM(CP85,CP88)","v":2237.0232136975883}]
[]
["Number of poles & brackets replaced",null,null,null,null,{"$f":"'DNSP Inputs Capex'!$D$87","v":101.14448514448515},null,null,null,null,null,{"$f":"'DNSP Inputs Capex'!$D$88","v":240.39723239723239},null,null,null,null,null,{"$f":"'DNSP Inputs Capex'!$D$89","v":10.458282458282458},null,null,null,null,null,null,{"$f":"'DNSP Inputs Capex'!$E$87","v":101.14448514448515},null,null,null,null,null,{"$f":"'DNSP Inputs Capex'!$E$88","v":240.39723239723239},null,null,null,null,null,{"$f":"'DNSP Inputs Capex'!$E$89","v":10.458282458282458},null,null,null,null,null,null,{"$f":"'DNSP Inputs Capex'!$F$87","v":101.14448514448515},null,null,null,null,null,{"$f":"'DNSP Inputs Capex'!$F$88","v":240.39723239723239},null,null,null,null,null,{"$f":"'DNSP Inputs Capex'!$F$89","v":10.458282458282458},null,null,null,null,null,null,{"$f":"'DNSP Inputs Capex'!$G$87","v":101.14448514448515},null,null,null,null,null,{"$f":"'DNSP Inputs Capex'!$G$88","v":240.39723239723239},null,null,null,null,null,{"$f":"'DNSP Inputs Capex'!$G$89","v":10.458282458282458},null,null,null,null,null,null,{"$f":"'DNSP Inputs Capex'!$H$87","v":101.14448514448515},null,null,null,null,null,{"$f":"'DNSP Inputs Capex'!$H$88","v":240.39723239723239},null,null,null,null,null,{"$f":"'DNSP Inputs Capex'!$H$89","v":10.458282458282458}]
[]
["Capex",null,null,null,null,{"$f":"F89*F91","v":213360.24184883016},null,null,null,null,null,{"$f":"L89*L91","v":532415.90239750326},null,null,null,null,null,{"$f":"R89*R91","v":23162.312797984348},null,null,null,null,null,null,{"$f":"Y89*Y91","v":213516.17293009462},null,null,null,null,null,{"$f":"AE89*AE91","v":533407.39032636315},null,null,null,null,null,{"$f":"AK89*AK91","v":23205.446659013414},null,null,null,null,null,null,{"$f":"AR89*AR91","v":213850.33871590384},null,null,null,null,null,{"$f":"AX89*AX91","v":534712.46893870563},null,null,null,null,null,{"$f":"BD89*BD91","v":23262.223022959184},null,null,null,null,null,null,{"$f":"BK89*BK91","v":214259.6215864057},null,null,null,null,null,{"$f":"BQ89*BQ91","v":536199.10681599472},null,null,null,null,null,{"$f":"BW89*BW91","v":23326.897972328734},null,null,null,null,null,null,{"$f":"CD89*CD91","v":214698.65932159303},null,null,null,null,null,{"$f":"CJ89*CJ91","v":537774.18938126275},null,null,null,null,null,{"$f":"CP89*CP91","v":23395.420634584138}]
[]
[]
["Brackets"]
["Material",{"$f":"'DNSP Inputs Capex'!$D$80","v":48.472996155959329},{"$f":"'DNSP Inputs Capex'!$D$81","v":19.2},null,{"$f":"C97*B97","v":930.68152619441912},{"$f":"(E97+E98+E99)/C97","v":150.71466282262602},null,{"$f":"'DNSP Inputs Capex'!$D$80*(1+'DNSP Inputs Capex'!$D$11)","v":50.896645963757301},{"$f":"'DNSP Inputs Capex'!$D$81","v":19.2},null,{"$f":"I97*H97","v":977.21560250414018},{"$f":"(K97+K98+K99)/I97","v":158.21058576811103},null,{"$f":"'DNSP Inputs Capex'!$D$80*(1+'DNSP Inputs Capex'!$D$11)","v":50.896645963757301},{"$f":"'DNSP Inputs Capex'!$D$81","v":19.2},null,{"$f":"O97*N97","v":977.21560250414018},{"$f":"(Q97+Q98+Q99)/O97","v":158.21058576811103},null,null,{"$f":"'DNSP Inputs Capex'!$E$80","v":48.472996155959329},{"$f":"'DNSP Inputs Capex'!$E$81","v":19.2},null,{"$f":"V97*U97","v":930.68152619441912},{"$f":"(X97+X98+X99)/V97","v":151.02299615595936},null,{"$f":"'DNSP Inputs Capex'!$E$80*(1+'DNSP Inputs Capex'!$E$11)","v":50.896645963757301},{"$f":"'DNSP Inputs Capex'!$E$81","v":19.2},null,{"$f":"AB97*AA97","v":977.21560250414018},{"$f":"(AD97+AD98+AD99)/AB97","v":159.03546042991371},null,{"$f":"'DNSP Inputs Capex'!$E$80*(1+'DNSP Inputs Capex'!$E$11)","v":50.896645963757301},{"$f":"'DNSP Inputs Capex'!$E$81","v":19.2},null,{"$f":"AH97*AG97","v":977.21560250414018},{"$f":"(AJ97+AJ98+AJ99)/AH97","v":159.03546042991371},null,null,{"$f":"'DNSP Inputs Capex'!$F$80","v":48.472996155959329},{"$f":"'DNSP Inputs Capex'!$F$81","v":19.2},null,{"$f":"AO97*AN97","v":930.68152619441912},{"$f":"(AQ97+AQ98+AQ99)/AO97","v":151.68376532262599},null,{"$f":"'DNSP Inputs Capex'!$F$80*(1+'DNSP Inputs Capex'!$F$11)","v":50.896645963757301},{"$f":"'DNSP Inputs Capex'!$F$81","v":19.2},null,{"$f":"AU97*AT97","v":977.21560250414018},{"$f":"(AW97+AW98+AW99)/AU97","v":160.12122884690291},null,{"$f":"'DNSP Inputs Capex'!$F$80*(1+'DNSP Inputs Capex'!$F$11)","v":50.896645963757301},{"$f":"'DNSP Inputs Capex'!$F$81","v":19.2},null,{"$f":"BA97*AZ97","v":977.21560250414018},{"$f":"(BC97+BC98+BC99)/BA97","v":160.12122884690291},null,null,{"$f":"'DNSP Inputs Capex'!$G$80","v":48.472996155959329},{"$f":"'DNSP Inputs Capex'!$G$81","v":19.2},null,{"$f":"BH97*BG97","v":930.68152619441912},{"$f":"(BJ97+BJ98+BJ99)/BH97","v":152.49306870662602},null,{"$f":"'DNSP Inputs Capex'!$G$80*(1+'DNSP Inputs Capex'!$G$11)","v":50.896645963757301},{"$f":"'DNSP Inputs Capex'!$G$81","v":19.2},null,{"$f":"BN97*BM97","v":977.21560250414018},{"$f":"(BP97+BP98+BP99)/BN97","v":161.35804664423301},null,{"$f":"'DNSP Inputs Capex'!$G$80*(1+'DNSP Inputs Capex'!$G$11)","v":50.896645963757301},{"$f":"'DNSP Inputs Capex'!$G$81","v":19.2},null,{"$f":"BT97*BS97","v":977.21560250414018},{"$f":"(BV97+BV98+BV99)/BT97","v":161.35804664423301},null,null,{"$f":"'DNSP Inputs Capex'!$H$80","v":48.472996155959329},{"$f":"'DNSP Inputs Capex'!$H$81","v":19.2},null,{"$f":"CA97*BZ97","v":930.68152619441912},{"$f":"(CC97+CC98+CC99)/CA97","v":153.36120844664279},null,{"$f":"'DNSP Inputs Capex'!$H$80*(1+'DNSP Inputs Capex'!$H$11)","v":50.896645963757301},{"$f":"'DNSP Inputs Capex'!$H$81","v":19.2},null,{"$f":"CG97*CF97","v":977.21560250414018},{"$f":"(CI97+CI98+CI99)/CG97","v":162.66844655987384},null,{"$f":"'DNSP Inputs Capex'!$H$80*(1+'DNSP Inputs Capex'!$H$11)","v":50.896645963757301},{"$f":"'DNSP Inputs Capex'!$H$81","v":19.2},null,{"$f":"CM97*CL97","v":977.21560250414018},{"$f":"(CO97+CO98+CO99)/CM97","v":162.66844655987384}]
["Crew costs",{"$f":"'DNSP Inputs Capex'!$D$12","v":100},{"$f":"'DNSP Inputs Capex'!$D$23","v":2},{"$f":"'DNSP Inputs Capex'!$D$15","v":8},{"$f":"B98*C98*D98","v":1600},null,null,{"$f":"'DNSP Inputs Capex'!$D$12","v":100},{"$f":"'DNSP Inputs Capex'!$D$23","v":2},{"$f":"'DNSP Inputs Capex'!$D$15","v":8},{"$f":"H98*I98*J98","v":1600},null,null,{"$f":"'DNSP Inputs Capex'!$D$12","v":100},{"$f":"'DNSP Inputs Capex'!$D$23","v":2},{"$f":"'DNSP Inputs Capex'!$D$15","v":8},{"$f":"N98*O98*P98","v":1600},null,null,null,{"$f":"'DNSP Inputs Capex'!$E$12","v":100.37},{"$f":"'DNSP Inputs Capex'!$E$23","v":2},{"$f":"'DNSP Inputs Capex'!$E$15","v":8},{"$f":"U98*V98*W98","v":1605.92},null,null,{"$f":"'DNSP Inputs Capex'!$E$12","v":100.37},{"$f":"'DNSP Inputs Capex'!$E$23","v":2},{"$f":"'DNSP Inputs Capex'!$E$15","v":8},{"$f":"AA98*AB98*AC98","v":1605.92},null,null,{"$f":"'DNSP Inputs Capex'!$E$12","v":100.37},{"$f":"'DNSP Inputs Capex'!$E$23","v":2},{"$f":"'DNSP Inputs Capex'!$E$15","v":8},{"$f":"AG98*AH98*AI98","v":1605.92},null,null,null,{"$f":"'DNSP Inputs Capex'!$F$12","v":101.16292300000001},{"$f":"'DNSP Inputs Capex'!$F$23","v":2},{"$f":"'DNSP Inputs Capex'!$F$15","v":8},{"$f":"AN98*AO98*AP98","v":1618.6067680000001},null,null,{"$f":"'DNSP Inputs Capex'!$F$12","v":101.16292300000001},{"$f":"'DNSP Inputs Capex'!$F$23","v":2},{"$f":"'DNSP Inputs Capex'!$F$15","v":8},{"$f":"AT98*AU98*AV98","v":1618.6067680000001},null,null,{"$f":"'DNSP Inputs Capex'!$F$12","v":101.16292300000001},{"$f":"'DNSP Inputs Capex'!$F$23","v":2},{"$f":"'DNSP Inputs Capex'!$F$15","v":8},{"$f":"AZ98*BA98*BB98","v":1618.6067680000001},null,null,null,{"$f":"'DNSP Inputs Capex'!$G$12","v":102.13408706080001},{"$f":"'DNSP Inputs Capex'!$G$23","v":2},{"$f":"'DNSP Inputs Capex'!$G$15","v":8},{"$f":"BG98*BH98*BI98","v":1634.1453929728002},null,null,{"$f":"'DNSP Inputs Capex'!$G$12","v":102.13408706080001},{"$f":"'DNSP Inputs Capex'!$G$23","v":2},{"$f":"'DNSP Inputs Capex'!$G$15","v":8},{"$f":"BM98*BN98*BO98","v":1634.1453929728002},null,null,{"$f":"'DNSP Inputs Capex'!$G$12","v":102.13408706080001},{"$f":"'DNSP Inputs Capex'!$G$23","v":2},{"$f":"'DNSP Inputs Capex'!$G$15","v":8},{"$f":"BS98*BT98*BU98","v":1634.1453929728002},null,null,null,{"$f":"'DNSP Inputs Capex'!$H$12","v":103.17585474882017},{"$f":"'DNSP Inputs Capex'!$H$23","v":2},{"$f":"'DNSP Inputs Capex'!$H$15","v":8},{"$f":"BZ98*CA98*CB98","v":1650.8136759811227},null,null,{"$f":"'DNSP Inputs Capex'!$H$12","v":103.17585474882017},{"$f":"'DNSP Inputs Capex'!$H$23","v":2},{"$f":"'DNSP Inputs Capex'!$H$15","v":8},{"$f":"CF98*CG98*CH98","v":1650.8136759811227},null,null,{"$f":"'DNSP Inputs Capex'!$H$12","v":103.17585474882017},{"$f":"'DNSP Inputs Capex'!$H$23","v":2},{"$f":"'DNSP Inputs Capex'!$H$15","v":8},{"$f":"CL98*CM98*CN98","v":1650.8136759811227}]
["Elevated platform costs",{"$f":"'DNSP Inputs Capex'!$D$13","v":45.38},1,{"$f":"'DNSP Inputs Capex'!$D$15","v":8},{"$f":"B99*C99*D99","v":363.04},null,null,{"$f":"'DNSP Inputs Capex'!$D$14","v":57.553455530448915},1,{"$f":"'DNSP Inputs Capex'!$D$15","v":8},{"$f":"H99*I99*J99","v":460.42764424359132},null,null,{"$f":"'DNSP Inputs Capex'!$D$14","v":57.553455530448915},1,{"$f":"'DNSP Inputs Capex'!$D$15","v":8},{"$f":"N99*O99*P99","v":460.42764424359132},null,null,null,{"$f":"'DNSP Inputs Capex'!$E$13","v":45.38},1,{"$f":"'DNSP Inputs Capex'!$E$15","v":8},{"$f":"U99*V99*W99","v":363.04},null,null,{"$f":"'DNSP Inputs Capex'!$E$14","v":58.793154718775355},1,{"$f":"'DNSP Inputs Capex'!$E$15","v":8},{"$f":"AA99*AB99*AC99","v":470.34523775020284},null,null,{"$f":"'DNSP Inputs Capex'!$E$14","v":58.793154718775355},1,{"$f":"'DNSP Inputs Capex'!$E$15","v":8},{"$f":"AG99*AH99*AI99","v":470.34523775020284},null,null,null,{"$f":"'DNSP Inputs Capex'!$F$13","v":45.38},1,{"$f":"'DNSP Inputs Capex'!$F$15","v":8},{"$f":"AN99*AO99*AP99","v":363.04},null,null,{"$f":"'DNSP Inputs Capex'!$F$14","v":59.813152919549431},1,{"$f":"'DNSP Inputs Capex'!$F$15","v":8},{"$f":"AT99*AU99*AV99","v":478.50522335639545},null,null,{"$f":"'DNSP Inputs Capex'!$F$14","v":59.813152919549431},1,{"$f":"'DNSP Inputs Capex'!$F$15","v":8},{"$f":"AZ99*BA99*BB99","v":478.50522335639545},null,null,null,{"$f":"'DNSP Inputs Capex'!$G$13","v":45.38},1,{"$f":"'DNSP Inputs Capex'!$G$15","v":8},{"$f":"BG99*BH99*BI99","v":363.04},null,null,{"$f":"'DNSP Inputs Capex'!$G$14","v":60.839187511541702},1,{"$f":"'DNSP Inputs Capex'!$G$15","v":8},{"$f":"BM99*BN99*BO99","v":486.71350009233362},null,null,{"$f":"'DNSP Inputs Capex'!$G$14","v":60.839187511541702},1,{"$f":"'DNSP Inputs Capex'!$G$15","v":8},{"$f":"BS99*BT99*BU99","v":486.71350009233362},null,null,null,{"$f":"'DNSP Inputs Capex'!$H$13","v":45.38},1,{"$f":"'DNSP Inputs Capex'!$H$15","v":8},{"$f":"BZ99*CA99*CB99","v":363.04},null,null,{"$f":"'DNSP Inputs Capex'!$H$14","v":61.900611933039357},1,{"$f":"'DNSP Inputs Capex'!$H$15","v":8},{"$f":"CF99*CG99*CH99","v":495.20489546431486},null,null,{"$f":"'DNSP Inputs Capex'!$H$14","v":61.900611933039357},1,{"$f":"'DNSP Inputs Capex'!$H$15","v":8},{"$f":"CL99*CM99*CN99","v":495.20489546431486}]
[]
["Number of brackets replaced",null,null,null,null,{"$f":"'DNSP Inputs Capex'!$D$92","v":20},null,null,null,null,null,{"$f":"'DNSP Inputs Capex'!$D$93","v":30},null,null,null,null,null,{"$f":"'DNSP Inputs Capex'!$D$94","v":2},null,null,null,null,null,null,{"$f":"'DNSP Inputs Capex'!$E$92","v":20},null,null,null,null,null,{"$f":"'DNSP Inputs Capex'!$E$93","v":30},null,null,null,null,null,{"$f":"'DNSP Inputs Capex'!$E$94","v":2},null,null,null,null,null,null,{"$f":"'DNSP Inputs Capex'!$F$92","v":20},null,null,null,null,null,{"$f":"'DNSP Inputs Capex'!$F$93","v":30},null,null,null,null,null,{"$f":"'DNSP Inputs Capex'!$F$94","v":2},null,null,null,null,null,null,{"$f":"'DNSP Inputs Capex'!$G$92","v":20},null,null,null,null,null,{"$f":"'DNSP Inputs Capex'!$G$93","v":30},null,null,null,null,null,{"$f":"'DNSP Inputs Capex'!$G$94","v":2},null,null,null,null,null,null,{"$f":"'DNSP Inputs Capex'!$H$92","v":20},null,null,null,null,null,{"$f":"'DNSP Inputs Capex'!$H$93","v":30},null,null,null,null,null,{"$f":"'DNSP Inputs Capex'!$H$94","v":2}]
[]
["Capex",null,null,null,null,{"$f":"F97*F101","v":3014.2932564525204},null,null,null,null,null,{"$f":"L97*L101","v":4746.3175730433313},null,null,null,null,null,{"$f":"R97*R101","v":316.42117153622206},null,null,null,null,null,null,{"$f":"Y97*Y101","v":3020.4599231191874},null,null,null,null,null,{"$f":"AE97*AE101","v":4771.0638128974115},null,null,null,null,null,{"$f":"AK97*AK101","v":318.07092085982742},null,null,null,null,null,null,{"$f":"AR97*AR101","v":3033.6753064525196},null,null,null,null,null,{"$f":"AX97*AX101","v":4803.6368654070875},null,null,null,null,null,{"$f":"BD97*BD101","v":320.24245769380582},null,null,null,null,null,null,{"$f":"BK97*BK101","v":3049.8613741325203},null,null,null,null,null,{"$f":"BQ97*BQ101","v":4840.7413993269902},null,null,null,null,null,{"$f":"BW97*BW101","v":322.71609328846603},null,null,null,null,null,null,{"$f":"CD97*CD101","v":3067.2241689328557},null,null,null,null,null,{"$f":"CJ97*CJ101","v":4880.0533967962156},null,null,null,null,null,{"$f":"CP97*CP101","v":325.33689311974769}]
[]
[" "]
[]
["T5 (2 X 14W)"]
["Luminaires "]
["Material & misc",{"$f":"'DNSP Inputs Capex'!$D$106+'DNSP Inputs Capex'!$D$107","v":302.66564236365446},{"$f":"'DNSP Inputs Capex'!$D$109","v":15.36},null,{"$f":"B109*C109","v":4648.9442667057319},{"$f":"(E109+E110+E111)/C109","v":430.46772569698777},null,{"$f":"('DNSP Inputs Capex'!$D$106+'DNSP Inputs Capex'!$D$107)*(1+'DNSP Inputs Capex'!$D$11)","v":317.79892448183722},{"$f":"'DNSP Inputs Capex'!$D$110","v":12.48},null,{"$f":"H109*I109","v":3966.1305775333285},{"$f":"(K109+K110+K111)/I109","v":482.89729341161217},null,{"$f":"('DNSP Inputs Capex'!$D$106+'DNSP Inputs Capex'!$D$107)*(1+'DNSP Inputs Capex'!$D$11)","v":317.79892448183722},{"$f":"'DNSP Inputs Capex'!$D$111","v":9.6},null,{"$f":"N109*O109","v":3050.8696750256372},{"$f":"(Q109+Q110+Q111)/O109","v":532.42680409054458},null,null,{"$f":"'DNSP Inputs Capex'!$E$106+'DNSP Inputs Capex'!$E$107","v":302.66564236365446},{"$f":"'DNSP Inputs Capex'!$E$109","v":15.36},null,{"$f":"U109*V109","v":4648.9442667057319},{"$f":"(X109+X110+X111)/V109","v":430.85314236365446},null,{"$f":"('DNSP Inputs Capex'!$E$106+'DNSP Inputs Capex'!$E$107)*(1+'DNSP Inputs Capex'!$E$11)","v":317.79892448183722},{"$f":"'DNSP Inputs Capex'!$E$110","v":12.48},null,{"$f":"AA109*AB109","v":3966.1305775333285},{"$f":"(AD109+AD110+AD111)/AB109","v":484.16633135284701},null,{"$f":"('DNSP Inputs Capex'!$E$106+'DNSP Inputs Capex'!$E$107)*(1+'DNSP Inputs Capex'!$E$11)","v":317.79892448183722},{"$f":"'DNSP Inputs Capex'!$E$111","v":9.6},null,{"$f":"AG109*AH109","v":3050.8696750256372},{"$f":"(AJ109+AJ110+AJ111)/AH109","v":534.07655341415},null,null,{"$f":"'DNSP Inputs Capex'!$F$106+'DNSP Inputs Capex'!$F$107","v":302.66564236365446},{"$f":"'DNSP Inputs Capex'!$F$109","v":15.36},null,{"$f":"AN109*AO109","v":4648.9442667057319},{"$f":"(AQ109+AQ110+AQ111)/AO109","v":431.67910382198772},null,{"$f":"('DNSP Inputs Capex'!$F$106+'DNSP Inputs Capex'!$F$107)*(1+'DNSP Inputs Capex'!$F$11)","v":317.79892448183722},{"$f":"'DNSP Inputs Capex'!$F$110","v":12.48},null,{"$f":"AT109*AU109","v":3966.1305775333285},{"$f":"(AW109+AW110+AW111)/AU109","v":485.83674430206128},null,{"$f":"('DNSP Inputs Capex'!$F$106+'DNSP Inputs Capex'!$F$107)*(1+'DNSP Inputs Capex'!$F$11)","v":317.79892448183722},{"$f":"'DNSP Inputs Capex'!$F$111","v":9.6},null,{"$f":"AZ109*BA109","v":3050.8696750256372},{"$f":"(BC109+BC110+BC111)/BA109","v":536.24809024812851},null,null,{"$f":"'DNSP Inputs Capex'!$G$106+'DNSP Inputs Capex'!$G$107","v":302.66564236365446},{"$f":"'DNSP Inputs Capex'!$G$109","v":15.36},null,{"$f":"BG109*BH109","v":4648.9442667057319},{"$f":"(BJ109+BJ110+BJ111)/BH109","v":432.69073305198782},null,{"$f":"('DNSP Inputs Capex'!$G$106+'DNSP Inputs Capex'!$G$107)*(1+'DNSP Inputs Capex'!$G$11)","v":317.79892448183722},{"$f":"'DNSP Inputs Capex'!$G$110","v":12.48},null,{"$f":"BM109*BN109","v":3966.1305775333285},{"$f":"(BP109+BP110+BP111)/BN109","v":487.73954091333832},null,{"$f":"('DNSP Inputs Capex'!$G$106+'DNSP Inputs Capex'!$G$107)*(1+'DNSP Inputs Capex'!$G$11)","v":317.79892448183722},{"$f":"'DNSP Inputs Capex'!$G$111","v":9.6},null,{"$f":"BS109*BT109","v":3050.8696750256372},{"$f":"(BV109+BV110+BV111)/BT109","v":538.7217258427886},null,null,{"$f":"'DNSP Inputs Capex'!$H$106+'DNSP Inputs Capex'!$H$107","v":302.66564236365446},{"$f":"'DNSP Inputs Capex'!$H$109","v":15.36},null,{"$f":"BZ109*CA109","v":4648.9442667057319},{"$f":"(CC109+CC110+CC111)/CA109","v":433.77590772700876},null,{"$f":"('DNSP Inputs Capex'!$H$106+'DNSP Inputs Capex'!$H$107)*(1+'DNSP Inputs Capex'!$H$11)","v":317.79892448183722},{"$f":"'DNSP Inputs Capex'!$H$110","v":12.48},null,{"$f":"CF109*CG109","v":3966.1305775333285},{"$f":"(CI109+CI110+CI111)/CG109","v":489.75554078355503},null,{"$f":"('DNSP Inputs Capex'!$H$106+'DNSP Inputs Capex'!$H$107)*(1+'DNSP Inputs Capex'!$H$11)","v":317.79892448183722},{"$f":"'DNSP Inputs Capex'!$H$111","v":9.6},null,{"$f":"CL109*CM109","v":3050.8696750256372},{"$f":"(CO109+CO110+CO111)/CM109","v":541.34252567407032}]
["Crew costs",{"$f":"'DNSP Inputs Capex'!$D$12","v":100},{"$f":"'DNSP Inputs Capex'!$D$108","v":2},{"$f":"'DNSP Inputs Capex'!$D$15","v":8},{"$f":"D110*C110*B110","v":1600},null,null,{"$f":"'DNSP Inputs Capex'!$D$12","v":100},{"$f":"'DNSP Inputs Capex'!$D$108","v":2},{"$f":"'DNSP Inputs Capex'!$D$15","v":8},{"$f":"J110*I110*H110","v":1600},null,null,{"$f":"'DNSP Inputs Capex'!$D$12","v":100},{"$f":"'DNSP Inputs Capex'!$D$108","v":2},{"$f":"'DNSP Inputs Capex'!$D$15","v":8},{"$f":"P110*O110*N110","v":1600},null,null,null,{"$f":"'DNSP Inputs Capex'!$E$12","v":100.37},{"$f":"'DNSP Inputs Capex'!$E$108","v":2},{"$f":"'DNSP Inputs Capex'!$E$15","v":8},{"$f":"W110*V110*U110","v":1605.92},null,null,{"$f":"'DNSP Inputs Capex'!$E$12","v":100.37},{"$f":"'DNSP Inputs Capex'!$E$108","v":2},{"$f":"'DNSP Inputs Capex'!$E$15","v":8},{"$f":"AC110*AB110*AA110","v":1605.92},null,null,{"$f":"'DNSP Inputs Capex'!$E$12","v":100.37},{"$f":"'DNSP Inputs Capex'!$E$108","v":2},{"$f":"'DNSP Inputs Capex'!$E$15","v":8},{"$f":"AI110*AH110*AG110","v":1605.92},null,null,null,{"$f":"'DNSP Inputs Capex'!$F$12","v":101.16292300000001},{"$f":"'DNSP Inputs Capex'!$F$108","v":2},{"$f":"'DNSP Inputs Capex'!$F$15","v":8},{"$f":"AP110*AO110*AN110","v":1618.6067680000001},null,null,{"$f":"'DNSP Inputs Capex'!$F$12","v":101.16292300000001},{"$f":"'DNSP Inputs Capex'!$F$108","v":2},{"$f":"'DNSP Inputs Capex'!$F$15","v":8},{"$f":"AV110*AU110*AT110","v":1618.6067680000001},null,null,{"$f":"'DNSP Inputs Capex'!$F$12","v":101.16292300000001},{"$f":"'DNSP Inputs Capex'!$F$108","v":2},{"$f":"'DNSP Inputs Capex'!$F$15","v":8},{"$f":"BB110*BA110*AZ110","v":1618.6067680000001},null,null,null,{"$f":"'DNSP Inputs Capex'!$G$12","v":102.13408706080001},{"$f":"'DNSP Inputs Capex'!$G$108","v":2},{"$f":"'DNSP Inputs Capex'!$G$15","v":8},{"$f":"BI110*BH110*BG110","v":1634.1453929728002},null,null,{"$f":"'DNSP Inputs Capex'!$G$12","v":102.13408706080001},{"$f":"'DNSP Inputs Capex'!$G$108","v":2},{"$f":"'DNSP Inputs Capex'!$G$15","v":8},{"$f":"BO110*BN110*BM110","v":1634.1453929728002},null,null,{"$f":"'DNSP Inputs Capex'!$G$12","v":102.13408706080001},{"$f":"'DNSP Inputs Capex'!$G$108","v":2},{"$f":"'DNSP Inputs Capex'!$G$15","v":8},{"$f":"BU110*BT110*BS110","v":1634.1453929728002},null,null,null,{"$f":"'DNSP Inputs Capex'!$H$12","v":103.17585474882017},{"$f":"'DNSP Inputs Capex'!$H$108","v":2},{"$f":"'DNSP Inputs Capex'!$H$15","v":8},{"$f":"CB110*CA110*BZ110","v":1650.8136759811227},null,null,{"$f":"'DNSP Inputs Capex'!$H$12","v":103.17585474882017},{"$f":"'DNSP Inputs Capex'!$H$108","v":2},{"$f":"'DNSP Inputs Capex'!$H$15","v":8},{"$f":"CH110*CG110*CF110","v":1650.8136759811227},null,null,{"$f":"'DNSP Inputs Capex'!$H$12","v":103.17585474882017},{"$f":"'DNSP Inputs Capex'!$H$108","v":2},{"$f":"'DNSP Inputs Capex'!$H$15","v":8},{"$f":"CN110*CM110*CL110","v":1650.8136759811227}]
["Elevated platform vehicle costs",{"$f":"'DNSP Inputs Capex'!$D$13","v":45.38},1,{"$f":"'DNSP Inputs Capex'!$D$15","v":8},{"$f":"B111*C111*D111","v":363.04},null,null,{"$f":"'DNSP Inputs Capex'!$D$14","v":57.553455530448915},1,{"$f":"'DNSP Inputs Capex'!$D$15","v":8},{"$f":"H111*I111*J111","v":460.42764424359132},null,null,{"$f":"'DNSP Inputs Capex'!$D$14","v":57.553455530448915},1,{"$f":"'DNSP Inputs Capex'!$D$15","v":8},{"$f":"N111*O111*P111","v":460.42764424359132},null,null,null,{"$f":"'DNSP Inputs Capex'!$E$13","v":45.38},1,{"$f":"'DNSP Inputs Capex'!$E$15","v":8},{"$f":"U111*V111*W111","v":363.04},null,null,{"$f":"'DNSP Inputs Capex'!$E$14","v":58.793154718775355},1,{"$f":"'DNSP Inputs Capex'!$E$15","v":8},{"$f":"AA111*AB111*AC111","v":470.34523775020284},null,null,{"$f":"'DNSP Inputs Capex'!$E$14","v":58.793154718775355},1,{"$f":"'DNSP Inputs Capex'!$E$15","v":8},{"$f":"AG111*AH111*AI111","v":470.34523775020284},null,null,null,{"$f":"'DNSP Inputs Capex'!$F$13","v":45.38},1,{"$f":"'DNSP Inputs Capex'!$F$15","v":8},{"$f":"AN111*AO111*AP111","v":363.04},null,null,{"$f":"'DNSP Inputs Capex'!$F$14","v":59.813152919549431},1,{"$f":"'DNSP Inputs Capex'!$F$15","v":8},{"$f":"AT111*AU111*AV111","v":478.50522335639545},null,null,{"$f":"'DNSP Inputs Capex'!$F$14","v":59.813152919549431},1,{"$f":"'DNSP Inputs Capex'!$F$15","v":8},{"$f":"AZ111*BA111*BB111","v":478.50522335639545},null,null,null,{"$f":"'DNSP Inputs Capex'!$G$13","v":45.38},1,{"$f":"'DNSP Inputs Capex'!$G$15","v":8},{"$f":"BG111*BH111*BI111","v":363.04},null,null,{"$f":"'DNSP Inputs Capex'!$G$14","v":60.839187511541702},1,{"$f":"'DNSP Inputs Capex'!$G$15","v":8},{"$f":"BM111*BN111*BO111","v":486.71350009233362},null,null,{"$f":"'DNSP Inputs Capex'!$G$14","v":60.839187511541702},1,{"$f":"'DNSP Inputs Capex'!$G$15","v":8},{"$f":"BS111*BT111*BU111","v":486.71350009233362},null,null,null,{"$f":"'DNSP Inputs Capex'!$H$13","v":45.38},1,{"$f":"'DNSP Inputs Capex'!$H$15","v":8},{"$f":"BZ111*CA111*CB111","v":363.04},null,null,{"$f":"'DNSP Inputs Capex'!$H$14","v":61.900611933039357},1,{"$f":"'DNSP Inputs Capex'!$H$15","v":8},{"$f":"CF111*CG111*CH111","v":495.20489546431486},null,null,{"$f":"'DNSP Inputs Capex'!$H$14","v":61.900611933039357},1,{"$f":"'DNSP Inputs Capex'!$H$15","v":8},{"$f":"CL111*CM111*CN111","v":495.20489546431486}]
[{"$f":"'DNSP Inputs Capex'!$A$113","v":"Other Capex unit costs Describe :………………………"},null,null,null,null,{"$f":"'DNSP Inputs Capex'!$D$113","v":0},null,null,null,null,null,{"$f":"'DNSP Inputs Capex'!$D$113","v":0},null,null,null,null,null,{"$f":"'DNSP Inputs Capex'!$D$113","v":0},null,null,null,null,null,null,{"$f":"'DNSP Inputs Capex'!$E$113","v":0},null,null,null,null,null,{"$f":"'DNSP Inputs Capex'!$E$113","v":0},null,null,null,null,null,{"$f":"'DNSP Inputs Capex'!$E$113","v":0},null,null,null,null,null,null,{"$f":"'DNSP Inputs Capex'!$F$113","v":0},null,null,null,null,null,{"$f":"'DNSP Inputs Capex'!$F$113","v":0},null,null,null,null,null,{"$f":"'DNSP Inputs Capex'!$F$113","v":0},null,null,null,null,null,null,{"$f":"'DNSP Inputs Capex'!$G$113","v":0},null,null,null,null,null,{"$f":"'DNSP Inputs Capex'!$G$113","v":0},null,null,null,null,null,{"$f":"'DNSP Inputs Capex'!$G$113","v":0},null,null,null,null,null,null,{"$f":"'DNSP Inputs Capex'!$H$113","v":0},null,null,null,null,null,{"$f":"'DNSP Inputs Capex'!$H$113","v":0},null,null,null,null,null,{"$f":"'DNSP Inputs Capex'!$H$113","v":0}]
[null,null,null,null,null,{"$f":"SUM(F109,F112)","v":430.46772569698777},null,null,null,null,null,{"$f":"SUM(L109,L112)","v":482.89729341161217},null,null,null,null,null,{"$f":"SUM(R109,R112)","v":532.42680409054458},null,null,null,null,null,null,{"$f":"SUM(Y109,Y112)","v":430.85314236365446},null,null,null,null,null,{"$f":"SUM(AE109,AE112)","v":484.16633135284701},null,null,null,null,null,{"$f":"SUM(AK109,AK112)","v":534.07655341415},null,null,null,null,null,null,{"$f":"SUM(AR109,AR112)","v":431.67910382198772},null,null,null,null,null,{"$f":"SUM(AX109,AX112)","v":485.83674430206128},null,null,null,null,null,{"$f":"SUM(BD109,BD112)","v":536.24809024812851},null,null,null,null,null,null,{"$f":"SUM(BK109,BK112)","v":432.69073305198782},null,null,null,null,null,{"$f":"SUM(BQ109,BQ112)","v":487.73954091333832},null,null,null,null,null,{"$f":"SUM(BW109,BW112)","v":538.7217258427886},null,null,null,null,null,null,{"$f":"SUM(CD109,CD112)","v":433.77590772700876},null,null,null,null,null,{"$f":"SUM(CJ109,CJ112)","v":489.75554078355503},null,null,null,null,null,{"$f":"SUM(CP109,CP112)","v":541.34252567407032}]
[]
["Number of luminaires replaced",null,null,null,null,{"$f":"'DNSP Inputs Capex'!$D$116","v":18.154503421007547},null,null,null,null,null,{"$f":"'DNSP Inputs Capex'!$D$117","v":5.117437323443081},null,null,null,null,null,{"$f":"'DNSP Inputs Capex'!$D$118","v":9.0175107021023444E-3},null,null,null,null,null,null,{"$f":"'DNSP Inputs Capex'!$E$116","v":17.060732291214411},null,null,null,null,null,{"$f":"'DNSP Inputs Capex'!$E$117","v":4.8091223520497586},null,null,null,null,null,{"$f":"'DNSP Inputs Capex'!$E$118","v":8.4742244088982528E-3},null,null,null,null,null,null,{"$f":"'DNSP Inputs Capex'!$F$116","v":16.848869354198303},null,null,null,null,null,{"$f":"'DNSP Inputs Capex'!$F$117","v":4.7494018917211163},null,null,null,null,null,{"$f":"'DNSP Inputs Capex'!$F$118","v":8.3689901175702484E-3},null,null,null,null,null,null,{"$f":"'DNSP Inputs Capex'!$G$116","v":16.516133667671351},null,null,null,null,null,{"$f":"'DNSP Inputs Capex'!$G$117","v":4.6556095151637855},null,null,null,null,null,{"$f":"'DNSP Inputs Capex'!$G$118","v":8.2037172073370669E-3},null,null,null,null,null,null,{"$f":"'DNSP Inputs Capex'!$H$116","v":16.072851299479424},null,null,null,null,null,{"$f":"'DNSP Inputs Capex'!$H$117","v":4.530655960489046},null,null,null,null,null,{"$f":"'DNSP Inputs Capex'!$H$118","v":7.9835347321392872E-3}]
[]
["Capex",null,null,null,null,{"$f":"F113*F115","v":7814.9277987993028},null,null,null,null,null,{"$f":"L113*L115","v":2471.1966326942288},null,null,null,null,null,{"$f":"R113*R115","v":4.801164403972634},null,null,null,null,null,null,{"$f":"Y113*Y115","v":7350.6701186947994},null,null,null,null,null,{"$f":"AE113*AE115","v":2328.4151262189066},null,null,null,null,null,{"$f":"AK113*AK115","v":4.5258845651624418},null,null,null,null,null,null,{"$f":"AR113*AR115","v":7273.3048232340761},null,null,null,null,null,{"$f":"AX113*AX115","v":2307.4339524558382},null,null,null,null,null,{"$f":"BD113*BD115","v":4.4878549678525061},null,null,null,null,null,null,{"$f":"BK113*BK115","v":7146.3779838493328},null,null,null,null,null,{"$f":"BQ113*BQ115","v":2270.7248475977544},null,null,null,null,null,{"$f":"BW113*BW115","v":4.4195206922628065},null,null,null,null,null,null,{"$f":"CD113*CD115","v":6972.01566219292},null,null,null,null,null,{"$f":"CJ113*CJ115","v":2218.9138600335496},null,null,null,null,null,{"$f":"CP113*CP115","v":4.3218268557029438}]
[]
[]
["Category P LED"]
["Luminaires "]
["Material",{"$f":"'DNSP Inputs Capex'!$D$124","v":352.72875158740868},{"$f":"'DNSP Inputs Capex'!$D$126","v":15.36},null,{"$f":"B122*C122","v":5417.9136243825969},{"$f":"(E122+E123+E124)/C122","v":480.530834920742},null,{"$f":"'DNSP Inputs Capex'!$D$124*(1+'DNSP Inputs Capex'!$D$11)","v":370.36518916677915},{"$f":"'DNSP Inputs Capex'!$D$127","v":12.48},null,{"$f":"H122*I122","v":4622.1575608014036},{"$f":"(K122+K123+K124)/I122","v":535.46355809655404},null,{"$f":"'DNSP Inputs Capex'!$D$124*(1+'DNSP Inputs Capex'!$D$11)","v":370.36518916677915},{"$f":"'DNSP Inputs Capex'!$D$128","v":9.6},null,{"$f":"N122*O122","v":3555.5058160010799},{"$f":"(Q122+Q123+Q124)/O122","v":584.99306877548656},null,null,{"$f":"'DNSP Inputs Capex'!$E$124","v":352.72875158740868},{"$f":"'DNSP Inputs Capex'!$E$126","v":15.36},null,{"$f":"U122*V122","v":5417.9136243825969},{"$f":"(X122+X123+X124)/V122","v":480.91625158740868},null,{"$f":"'DNSP Inputs Capex'!$E$124*(1+'DNSP Inputs Capex'!$E$11)","v":370.36518916677915},{"$f":"'DNSP Inputs Capex'!$E$127","v":12.48},null,{"$f":"AA122*AB122","v":4622.1575608014036},{"$f":"(AD122+AD123+AD124)/AB122","v":536.73259603778899},null,{"$f":"'DNSP Inputs Capex'!$E$124*(1+'DNSP Inputs Capex'!$E$11)","v":370.36518916677915},{"$f":"'DNSP Inputs Capex'!$E$128","v":9.6},null,{"$f":"AG122*AH122","v":3555.5058160010799},{"$f":"(AJ122+AJ123+AJ124)/AH122","v":586.64281809909187},null,null,{"$f":"'DNSP Inputs Capex'!$F$124","v":352.72875158740868},{"$f":"'DNSP Inputs Capex'!$F$126","v":15.36},null,{"$f":"AN122*AO122","v":5417.9136243825969},{"$f":"(AQ122+AQ123+AQ124)/AO122","v":481.74221304574206},null,{"$f":"'DNSP Inputs Capex'!$F$124*(1+'DNSP Inputs Capex'!$F$11)","v":370.36518916677915},{"$f":"'DNSP Inputs Capex'!$F$127","v":12.48},null,{"$f":"AT122*AU122","v":4622.1575608014036},{"$f":"(AW122+AW123+AW124)/AU122","v":538.4030089870032},null,{"$f":"'DNSP Inputs Capex'!$F$124*(1+'DNSP Inputs Capex'!$F$11)","v":370.36518916677915},{"$f":"'DNSP Inputs Capex'!$F$128","v":9.6},null,{"$f":"AZ122*BA122","v":3555.5058160010799},{"$f":"(BC122+BC123+BC124)/BA122","v":588.81435493307038},null,null,{"$f":"'DNSP Inputs Capex'!$G$124","v":352.72875158740868},{"$f":"'DNSP Inputs Capex'!$G$126","v":15.36},null,{"$f":"BG122*BH122","v":5417.9136243825969},{"$f":"(BJ122+BJ123+BJ124)/BH122","v":482.75384227574204},null,{"$f":"'DNSP Inputs Capex'!$G$124*(1+'DNSP Inputs Capex'!$G$11)","v":370.36518916677915},{"$f":"'DNSP Inputs Capex'!$G$127","v":12.48},null,{"$f":"BM122*BN122","v":4622.1575608014036},{"$f":"(BP122+BP123+BP124)/BN122","v":540.30580559828024},null,{"$f":"'DNSP Inputs Capex'!$G$124*(1+'DNSP Inputs Capex'!$G$11)","v":370.36518916677915},{"$f":"'DNSP Inputs Capex'!$G$128","v":9.6},null,{"$f":"BS122*BT122","v":3555.5058160010799},{"$f":"(BV122+BV123+BV124)/BT122","v":591.28799052773059},null,null,{"$f":"'DNSP Inputs Capex'!$H$124","v":352.72875158740868},{"$f":"'DNSP Inputs Capex'!$H$126","v":15.36},null,{"$f":"BZ122*CA122","v":5417.9136243825969},{"$f":"(CC122+CC123+CC124)/CA122","v":483.83901695076304},null,{"$f":"'DNSP Inputs Capex'!$H$124*(1+'DNSP Inputs Capex'!$H$11)","v":370.36518916677915},{"$f":"'DNSP Inputs Capex'!$H$127","v":12.48},null,{"$f":"CF122*CG122","v":4622.1575608014036},{"$f":"(CI122+CI123+CI124)/CG122","v":542.3218054684969},null,{"$f":"'DNSP Inputs Capex'!$H$124*(1+'DNSP Inputs Capex'!$H$11)","v":370.36518916677915},{"$f":"'DNSP Inputs Capex'!$H$128","v":9.6},null,{"$f":"CL122*CM122","v":3555.5058160010799},{"$f":"(CO122+CO123+CO124)/CM122","v":593.9087903590123}]
["Crew costs",{"$f":"'DNSP Inputs Capex'!$D$12","v":100},{"$f":"'DNSP Inputs Capex'!$D$125","v":2},{"$f":"'DNSP Inputs Capex'!$D$15","v":8},{"$f":"D123*C123*B123","v":1600},null,null,{"$f":"'DNSP Inputs Capex'!$D$12","v":100},{"$f":"'DNSP Inputs Capex'!$D$125","v":2},{"$f":"'DNSP Inputs Capex'!$D$15","v":8},{"$f":"J123*I123*H123","v":1600},null,null,{"$f":"'DNSP Inputs Capex'!$D$12","v":100},{"$f":"'DNSP Inputs Capex'!$D$125","v":2},{"$f":"'DNSP Inputs Capex'!$D$15","v":8},{"$f":"P123*O123*N123","v":1600},null,null,null,{"$f":"'DNSP Inputs Capex'!$E$12","v":100.37},{"$f":"'DNSP Inputs Capex'!$E$125","v":2},{"$f":"'DNSP Inputs Capex'!$E$15","v":8},{"$f":"W123*V123*U123","v":1605.92},null,null,{"$f":"'DNSP Inputs Capex'!$E$12","v":100.37},{"$f":"'DNSP Inputs Capex'!$E$125","v":2},{"$f":"'DNSP Inputs Capex'!$E$15","v":8},{"$f":"AC123*AB123*AA123","v":1605.92},null,null,{"$f":"'DNSP Inputs Capex'!$E$12","v":100.37},{"$f":"'DNSP Inputs Capex'!$E$125","v":2},{"$f":"'DNSP Inputs Capex'!$E$15","v":8},{"$f":"AI123*AH123*AG123","v":1605.92},null,null,null,{"$f":"'DNSP Inputs Capex'!$F$12","v":101.16292300000001},{"$f":"'DNSP Inputs Capex'!$F$125","v":2},{"$f":"'DNSP Inputs Capex'!$F$15","v":8},{"$f":"AP123*AO123*AN123","v":1618.6067680000001},null,null,{"$f":"'DNSP Inputs Capex'!$F$12","v":101.16292300000001},{"$f":"'DNSP Inputs Capex'!$F$125","v":2},{"$f":"'DNSP Inputs Capex'!$F$15","v":8},{"$f":"AV123*AU123*AT123","v":1618.6067680000001},null,null,{"$f":"'DNSP Inputs Capex'!$F$12","v":101.16292300000001},{"$f":"'DNSP Inputs Capex'!$F$125","v":2},{"$f":"'DNSP Inputs Capex'!$F$15","v":8},{"$f":"BB123*BA123*AZ123","v":1618.6067680000001},null,null,null,{"$f":"'DNSP Inputs Capex'!$G$12","v":102.13408706080001},{"$f":"'DNSP Inputs Capex'!$G$125","v":2},{"$f":"'DNSP Inputs Capex'!$G$15","v":8},{"$f":"BI123*BH123*BG123","v":1634.1453929728002},null,null,{"$f":"'DNSP Inputs Capex'!$G$12","v":102.13408706080001},{"$f":"'DNSP Inputs Capex'!$G$125","v":2},{"$f":"'DNSP Inputs Capex'!$G$15","v":8},{"$f":"BO123*BN123*BM123","v":1634.1453929728002},null,null,{"$f":"'DNSP Inputs Capex'!$G$12","v":102.13408706080001},{"$f":"'DNSP Inputs Capex'!$G$125","v":2},{"$f":"'DNSP Inputs Capex'!$G$15","v":8},{"$f":"BU123*BT123*BS123","v":1634.1453929728002},null,null,null,{"$f":"'DNSP Inputs Capex'!$H$12","v":103.17585474882017},{"$f":"'DNSP Inputs Capex'!$H$125","v":2},{"$f":"'DNSP Inputs Capex'!$H$15","v":8},{"$f":"CB123*CA123*BZ123","v":1650.8136759811227},null,null,{"$f":"'DNSP Inputs Capex'!$H$12","v":103.17585474882017},{"$f":"'DNSP Inputs Capex'!$H$125","v":2},{"$f":"'DNSP Inputs Capex'!$H$15","v":8},{"$f":"CH123*CG123*CF123","v":1650.8136759811227},null,null,{"$f":"'DNSP Inputs Capex'!$H$12","v":103.17585474882017},{"$f":"'DNSP Inputs Capex'!$H$125","v":2},{"$f":"'DNSP Inputs Capex'!$H$15","v":8},{"$f":"CN123*CM123*CL123","v":1650.8136759811227}]
["Elevated platform vehicle costs",{"$f":"'DNSP Inputs Capex'!$D$13","v":45.38},1,{"$f":"'DNSP Inputs Capex'!$D$15","v":8},{"$f":"B124*C124*D124","v":363.04},null,null,{"$f":"'DNSP Inputs Capex'!$D$14","v":57.553455530448915},1,{"$f":"'DNSP Inputs Capex'!$D$15","v":8},{"$f":"H124*I124*J124","v":460.42764424359132},null,null,{"$f":"'DNSP Inputs Capex'!$D$14","v":57.553455530448915},1,{"$f":"'DNSP Inputs Capex'!$D$15","v":8},{"$f":"N124*O124*P124","v":460.42764424359132},null,null,null,{"$f":"'DNSP Inputs Capex'!$E$13","v":45.38},1,{"$f":"'DNSP Inputs Capex'!$E$15","v":8},{"$f":"U124*V124*W124","v":363.04},null,null,{"$f":"'DNSP Inputs Capex'!$E$14","v":58.793154718775355},1,{"$f":"'DNSP Inputs Capex'!$E$15","v":8},{"$f":"AA124*AB124*AC124","v":470.34523775020284},null,null,{"$f":"'DNSP Inputs Capex'!$E$14","v":58.793154718775355},1,{"$f":"'DNSP Inputs Capex'!$E$15","v":8},{"$f":"AG124*AH124*AI124","v":470.34523775020284},null,null,null,{"$f":"'DNSP Inputs Capex'!$F$13","v":45.38},1,{"$f":"'DNSP Inputs Capex'!$F$15","v":8},{"$f":"AN124*AO124*AP124","v":363.04},null,null,{"$f":"'DNSP Inputs Capex'!$F$14","v":59.813152919549431},1,{"$f":"'DNSP Inputs Capex'!$F$15","v":8},{"$f":"AT124*AU124*AV124","v":478.50522335639545},null,null,{"$f":"'DNSP Inputs Capex'!$F$14","v":59.813152919549431},1,{"$f":"'DNSP Inputs Capex'!$F$15","v":8},{"$f":"AZ124*BA124*BB124","v":478.50522335639545},null,null,null,{"$f":"'DNSP Inputs Capex'!$G$13","v":45.38},1,{"$f":"'DNSP Inputs Capex'!$G$15","v":8},{"$f":"BG124*BH124*BI124","v":363.04},null,null,{"$f":"'DNSP Inputs Capex'!$G$14","v":60.839187511541702},1,{"$f":"'DNSP Inputs Capex'!$G$15","v":8},{"$f":"BM124*BN124*BO124","v":486.71350009233362},null,null,{"$f":"'DNSP Inputs Capex'!$G$14","v":60.839187511541702},1,{"$f":"'DNSP Inputs Capex'!$G$15","v":8},{"$f":"BS124*BT124*BU124","v":486.71350009233362},null,null,null,{"$f":"'DNSP Inputs Capex'!$H$13","v":45.38},1,{"$f":"'DNSP Inputs Capex'!$H$15","v":8},{"$f":"BZ124*CA124*CB124","v":363.04},null,null,{"$f":"'DNSP Inputs Capex'!$H$14","v":61.900611933039357},1,{"$f":"'DNSP Inputs Capex'!$H$15","v":8},{"$f":"CF124*CG124*CH124","v":495.20489546431486},null,null,{"$f":"'DNSP Inputs Capex'!$H$14","v":61.900611933039357},1,{"$f":"'DNSP Inputs Capex'!$H$15","v":8},{"$f":"CL124*CM124*CN124","v":495.20489546431486}]
[{"$f":"'DNSP Inputs Capex'!$A$130","v":"Other Capex unit costs Describe :………………………"},null,null,null,null,{"$f":"'DNSP Inputs Capex'!$D$130","v":0},null,null,null,null,null,{"$f":"'DNSP Inputs Capex'!$D$130","v":0},null,null,null,null,null,{"$f":"'DNSP Inputs Capex'!$D$130","v":0},null,null,null,null,null,null,{"$f":"'DNSP Inputs Capex'!$E$130","v":0},null,null,null,null,null,{"$f":"'DNSP Inputs Capex'!$E$130","v":0},null,null,null,null,null,{"$f":"'DNSP Inputs Capex'!$E$130","v":0},null,null,null,null,null,null,{"$f":"'DNSP Inputs Capex'!$F$130","v":0},null,null,null,null,null,{"$f":"'DNSP Inputs Capex'!$F$130","v":0},null,null,null,null,null,{"$f":"'DNSP Inputs Capex'!$F$130","v":0},null,null,null,null,null,null,{"$f":"'DNSP Inputs Capex'!$G$130","v":0},null,null,null,null,null,{"$f":"'DNSP Inputs Capex'!$G$130","v":0},null,null,null,null,null,{"$f":"'DNSP Inputs Capex'!$G$130","v":0},null,null,null,null,null,null,{"$f":"'DNSP Inputs Capex'!$H$130","v":0},null,null,null,null,null,{"$f":"'DNSP Inputs Capex'!$H$130","v":0},null,null,null,null,null,{"$f":"'DNSP Inputs Capex'!$H$130","v":0}]
[null,null,null,null,null,{"$f":"SUM(F122,F125)","v":480.530834920742},null,null,null,null,null,{"$f":"SUM(L122,L125)","v":535.46355809655404},null,null,null,null,null,{"$f":"SUM(R122,R125)","v":584.99306877548656},null,null,null,null,null,null,{"$f":"SUM(Y122,Y125)","v":480.91625158740868},null,null,null,null,null,{"$f":"SUM(AE122,AE125)","v":536.73259603778899},null,null,null,null,null,{"$f":"SUM(AK122,AK125)","v":586.64281809909187},null,null,null,null,null,null,{"$f":"SUM(AR122,AR125)","v":481.74221304574206},null,null,null,null,null,{"$f":"SUM(AX122,AX125)","v":538.4030089870032},null,null,null,null,null,{"$f":"SUM(BD122,BD125)","v":588.81435493307038},null,null,null,null,null,null,{"$f":"SUM(BK122,BK125)","v":482.75384227574204},null,null,null,null,null,{"$f":"SUM(BQ122,BQ125)","v":540.30580559828024},null,null,null,null,null,{"$f":"SUM(BW122,BW125)","v":591.28799052773059},null,null,null,null,null,null,{"$f":"SUM(CD122,CD125)","v":483.83901695076304},null,null,null,null,null,{"$f":"SUM(CJ122,CJ125)","v":542.3218054684969},null,null,null,null,null,{"$f":"SUM(CP122,CP125)","v":593.9087903590123}]
[]
["Number of luminaires replaced",null,null,null,null,{"$f":"'DNSP Inputs Capex'!$D$133","v":23.521582292790303},null,null,null,null,null,{"$f":"'DNSP Inputs Capex'!$D$134","v":52.614607676823844},null,null,null,null,null,{"$f":"'DNSP Inputs Capex'!$D$135","v":6.4262116246502403},null,null,null,null,null,null,{"$f":"'DNSP Inputs Capex'!$E$133","v":32.206357571578572},null,null,null,null,null,{"$f":"'DNSP Inputs Capex'!$E$134","v":72.041278823640511},null,null,null,null,null,{"$f":"'DNSP Inputs Capex'!$E$135","v":8.7989348181545655},null,null,null,null,null,null,{"$f":"'DNSP Inputs Capex'!$F$133","v":35.05196623585357},null,null,null,null,null,{"$f":"'DNSP Inputs Capex'!$F$134","v":78.406521672056002},null,null,null,null,null,{"$f":"'DNSP Inputs Capex'!$F$135","v":9.5763690591824115},null,null,null,null,null,null,{"$f":"'DNSP Inputs Capex'!$G$133","v":37.86584830403379},null,null,null,null,null,{"$f":"'DNSP Inputs Capex'!$G$134","v":84.700796403375065},null,null,null,null,null,{"$f":"'DNSP Inputs Capex'!$G$135","v":10.34513543858016},null,null,null,null,null,null,{"$f":"'DNSP Inputs Capex'!$H$133","v":40.609711881578129},null,null,null,null,null,{"$f":"'DNSP Inputs Capex'!$H$134","v":90.83844921321483},null,null,null,null,null,{"$f":"'DNSP Inputs Capex'!$H$135","v":11.09477242298807}]
[]
["Capex",null,null,null,null,{"$f":"F126*F128","v":11302.845577811466},null,null,null,null,null,{"$f":"L126*L128","v":28173.205034486364},null,null,null,null,null,{"$f":"R126*R128","v":3759.2892589048492},null,null,null,null,null,null,{"$f":"Y126*Y128","v":15488.560760607324},null,null,null,null,null,{"$f":"AE126*AE128","v":38666.902604894763},null,null,null,null,null,{"$f":"AK126*AK128","v":5161.8319179924147},null,null,null,null,null,null,{"$f":"AR126*AR128","v":16886.011786064726},null,null,null,null,null,{"$f":"AX126*AX128","v":42214.307192439628},null,null,null,null,null,{"$f":"BD126*BD128","v":5638.7035701835057},null,null,null,null,null,null,{"$f":"BK126*BK128","v":18279.883759802702},null,null,null,null,null,{"$f":"BQ126*BQ128","v":45764.332035541483},null,null,null,null,null,{"$f":"BW126*BW128","v":6116.9543452152757},null,null,null,null,null,null,{"$f":"CD126*CD128","v":19648.563075436483},null,null,null,null,null,{"$f":"CJ126*CJ128","v":49263.671783269026},null,null,null,null,null,{"$f":"CP126*CP128","v":6589.2828690453725}]

{"sheet":"WACC","index":10,"n_rows":18,"n_cols":9,"rows_kept":18,"cut":false,"hidden":false,"merged":[]}
[{"$f":"'DNSP Inputs O & M'!$A$3","v":"Powercor"}]
[]
["WACC"]
[null,null,null,null,2016,2017,2018,2019,2020]
[]
["CPI for Nominal pre tax WACC calculation",null,null,null,{"$f":"$C$14","v":2.32307982099372E-2},{"$f":"$C$15","v":1.0232558139534831E-2},{"$f":"$C$16","v":1.93370165745856E-2},{"$f":"$C$17","v":2.32307982099372E-2},{"$f":"$C$18","v":2.32307982099372E-2}]
["Real Pre Tax WACC",null,null,null,{"$f":"'DNSP Inputs General'!B$26","v":4.3470888279073527E-2},{"$f":"'DNSP Inputs General'!C$26","v":4.3470888279073527E-2},{"$f":"'DNSP Inputs General'!D$26","v":4.3470888279073527E-2},{"$f":"'DNSP Inputs General'!E$26","v":4.3470888279073527E-2},{"$f":"'DNSP Inputs General'!F$26","v":4.3470888279073527E-2}]
["Nominal Pre Tax WACC",null,null,null,{"$f":"(1+E6)*(1+E7)-1","v":6.7711549922628622E-2},5.4148264810301105E-2,6.3648502140823515E-2,6.7711549922628622E-2,6.7711549922628622E-2]
[]
[]
[]
[null,"CPI Index","CPI"]
["2014-09-30",{"$f":"IF('DNSP Inputs General'!B30=\"\",\"\",'DNSP Inputs General'!B30)","v":106.4},null,{"$f":"IF(B13=\"\",\"Forecast\",\"Actual\")","v":"Actual"}]
["2015-09-30",{"$f":"IF('DNSP Inputs General'!B31=\"\",\"\",'DNSP Inputs General'!B31)","v":""},{"$f":"IF(B14=\"\",'DNSP Inputs General'!D31,B14/B13-1)","v":2.32307982099372E-2},{"$f":"IF(B14=\"\",\"Forecast\",\"Actual\")","v":"Forecast"}]
["2016-09-30",{"$f":"IF('DNSP Inputs General'!B32=\"\",\"\",'DNSP Inputs General'!B32)","v":""},{"$f":"IF(B15=\"\",'DNSP Inputs General'!D32,B15/B14-1)","v":1.0232558139534831E-2},"Forecast"]
["2017-09-30",{"$f":"IF('DNSP Inputs General'!B33=\"\",\"\",'DNSP Inputs General'!B33)","v":""},{"$f":"IF(B16=\"\",'DNSP Inputs General'!D33,B16/B15-1)","v":1.93370165745856E-2},"Forecast"]
["2018-09-30",{"$f":"IF('DNSP Inputs General'!B34=\"\",\"\",'DNSP Inputs General'!B34)","v":""},{"$f":"IF(B17=\"\",'DNSP Inputs General'!D34,B17/B16-1)","v":2.32307982099372E-2},"Forecast"]
["2019-09-30",{"$f":"IF('DNSP Inputs General'!B35=\"\",\"\",'DNSP Inputs General'!B35)","v":""},{"$f":"IF(B18=\"\",'DNSP Inputs General'!D35,B18/B17-1)","v":2.32307982099372E-2},"Forecast"]

{"sheet":"Depn & WACC Post 2004","index":11,"n_rows":281,"n_cols":9,"rows_kept":281,"cut":false,"hidden":false,"merged":[[6,3,6,4],[6,6,6,7],[279,6,279,7],[238,3,238,4],[238,6,238,7],[267,3,267,4],[267,6,267,7],[279,3,279,5],[217,3,217,4],[217,6,217,7],[229,6,229,7],[229,3,229,5],[179,6,179,7],[188,3,188,4],[188,6,188,7],[179,3,179,5],[129,6,129,7],[129,3,129,5],[138,3,138,4],[138,6,138,7],[167,3,167,4],[167,6,167,7],[88,3,88,4],[88,6,88,7],[79,3,79,5],[117,3,117,4],[117,6,117,7],[38,3,38,4],[38,6,38,7],[67,3,67,4],[67,6,67,7],[79,6,79,7]]}
[{"$f":"'DNSP Inputs O & M'!$A$3","v":"Powercor"},null,null,null,"Check",{"$f":"SUM(E33,E65,E77,E115,E127,E165,E177,E215,E227,E265,E277)","v":1.3649696484208107E-8}]
[]
[]
["RAB WDV",null,null,"Year",2015]
[]
[]
[{"$f":"'DNSP Inputs General'!B$40","v":"Reference Light"},{"$f":"'DNSP Inputs General'!D$40","v":"Price Factor"},{"$f":"'DNSP Inputs General'!A$40","v":"Existing Lights"},"RAB for Return",null,"Volumes","Unitisation - Luminaires",null,"RAB WDV"]
[{"$f":"'DNSP Inputs General'!B$41","v":"Mercury vapour 80 watt"},{"$f":"'DNSP Inputs General'!D$41","v":1},{"$f":"'DNSP Inputs General'!A$41","v":"Mercury vapour 80 watt"},{"$f":"'RAB 2001 to 2004'!$P$141","v":17.027003021610579},{"$f":"F8*D8","v":1194614.5319961982},{"$f":"'DNSP Inputs General'!J$41","v":70160},null,null,{"$f":"IF(F8=0,0,E8/E$32*I$32/F8)","v":72.031619158125579}]
[{"$f":"'DNSP Inputs General'!B$42","v":"Sodium high pressure 150 watt"},{"$f":"'DNSP Inputs General'!D$42","v":1},{"$f":"'DNSP Inputs General'!A$42","v":"Sodium high pressure 150 watt"},{"$f":"'RAB 2001 to 2004'!$P$155","v":17.358107331072112},490435.96453211148,{"$f":"'DNSP Inputs General'!J$42","v":28254},null,null,73.432334215876892]
[{"$f":"'DNSP Inputs General'!B$43","v":"Sodium high pressure 250 watt"},{"$f":"'DNSP Inputs General'!D$43","v":1},{"$f":"'DNSP Inputs General'!A$43","v":"Sodium high pressure 250 watt"},{"$f":"'RAB 2001 to 2004'!$P$169","v":18.954546343259668},248645.73893088041,{"$f":"'DNSP Inputs General'!J$43","v":13118.000000000004},null,null,80.185964716154501]
[{"$f":"'DNSP Inputs General'!B$44","v":"Mercury vapour 80 watt"},{"$f":"'DNSP Inputs General'!D$44","v":2.12},{"$f":"'DNSP Inputs General'!A$44","v":"Fluorescent 20 watt"},{"$f":"B11*IF(A11=C8,D8,IF(A11=C9,D9,D10))","v":36.097246405814431},0,{"$f":"'DNSP Inputs General'!J$44","v":0},null,null,0]
[{"$f":"'DNSP Inputs General'!B$45","v":"Mercury vapour 80 watt"},{"$f":"'DNSP Inputs General'!D$45","v":2.12},{"$f":"'DNSP Inputs General'!A$45","v":"Fluorescent 40 watt"},{"$f":"B12*IF(A12=C8,D8,IF(A12=C9,D9,D10))","v":36.097246405814431},0,{"$f":"'DNSP Inputs General'!J$45","v":0},null,null,0]
[{"$f":"'DNSP Inputs General'!B$46","v":"Mercury vapour 80 watt"},{"$f":"'DNSP Inputs General'!D$46","v":1.39},{"$f":"'DNSP Inputs General'!A$46","v":"Mercury vapour 50 watt"},{"$f":"B13*IF(A13=C8,D8,IF(A13=C9,D9,D10))","v":23.667534200038702},5135.8549214083987,{"$f":"'DNSP Inputs General'!J$46","v":217.00000000000003},null,null,100.12395062979451]
[{"$f":"'DNSP Inputs General'!B$47","v":"Mercury vapour 80 watt"},{"$f":"'DNSP Inputs General'!D$47","v":1.35},{"$f":"'DNSP Inputs General'!A$47","v":"Mercury vapour 125 watt"},{"$f":"B14*IF(A14=C8,D8,IF(A14=C9,D9,D10))","v":22.986454079174283},23515.142522995287,{"$f":"'DNSP Inputs General'!J$47","v":1022.9999999999999},null,null,97.242685863469518]
[{"$f":"'DNSP Inputs General'!B$48","v":"Sodium high pressure 250 watt"},{"$f":"'DNSP Inputs General'!D$48","v":0.76},{"$f":"'DNSP Inputs General'!A$48","v":"Mercury vapour 250 watt"},{"$f":"B15*IF(A15=C8,D8,IF(A15=C9,D9,D10))","v":14.405455220877348},4033.5274618456583,{"$f":"'DNSP Inputs General'!J$48","v":280.00000000000006},null,null,60.941333184277418]
[{"$f":"'DNSP Inputs General'!B$49","v":"Sodium high pressure 250 watt"},{"$f":"'DNSP Inputs General'!D$49","v":0.88},{"$f":"'DNSP Inputs General'!A$49","v":"Mercury vapour 400 watt"},{"$f":"B16*IF(A16=C8,D8,IF(A16=C9,D9,D10))","v":16.680000782068507},1551.2400727323711,{"$f":"'DNSP Inputs General'!J$49","v":93},null,null,70.563648950215963]
[{"$f":"'DNSP Inputs General'!B$50","v":"Sodium high pressure 250 watt"},{"$f":"'DNSP Inputs General'!D$50","v":1.33},{"$f":"'DNSP Inputs General'!A$50","v":"Mercury vapour 700 watt"},{"$f":"B17*IF(A17=C8,D8,IF(A17=C9,D9,D10))","v":25.209546636535361},0,{"$f":"'DNSP Inputs General'!J$50","v":0},null,null,0]
[{"$f":"'DNSP Inputs General'!B$51","v":"Sodium high pressure 150 watt"},{"$f":"'DNSP Inputs General'!D$51","v":1.35},{"$f":"'DNSP Inputs General'!A$51","v":"Sodium low pressure 90 watt"},{"$f":"B18*IF(A18=C8,D8,IF(A18=C9,D9,D10))","v":23.433444896947353},0,{"$f":"'DNSP Inputs General'!J$51","v":0},null,null,0]
[{"$f":"'DNSP Inputs General'!B$52","v":"Sodium high pressure 150 watt"},{"$f":"'DNSP Inputs General'!D$52","v":1.35},{"$f":"'DNSP Inputs General'!A$52","v":"Sodium low pressure 180 watt"},{"$f":"B19*IF(A19=C8,D8,IF(A19=C9,D9,D10))","v":23.433444896947353},0,{"$f":"'DNSP Inputs General'!J$52","v":0},null,null,0]
[{"$f":"'DNSP Inputs General'!B$53","v":"Sodium high pressure 250 watt"},{"$f":"'DNSP Inputs General'!D$53","v":1.33},{"$f":"'DNSP Inputs General'!A$53","v":"Sodium high pressure 400 watt"},{"$f":"B20*IF(A20=C8,D8,IF(A20=C9,D9,D10))","v":25.209546636535361},19159.255443766877,{"$f":"'DNSP Inputs General'!J$53","v":760.00000000000011},null,null,106.64733307248549]
[{"$f":"'DNSP Inputs General'!B$54","v":"Mercury vapour 80 watt"},{"$f":"'DNSP Inputs General'!D$54","v":2.78},{"$f":"'DNSP Inputs General'!A$54","v":"Incandescent 100 watt"},{"$f":"B21*IF(A21=C8,D8,IF(A21=C9,D9,D10))","v":47.335068400077404},0,{"$f":"'DNSP Inputs General'!J$54","v":0},null,null,0]
[{"$f":"'DNSP Inputs General'!B$55","v":"Mercury vapour 80 watt"},{"$f":"'DNSP Inputs General'!D$55","v":2.78},{"$f":"'DNSP Inputs General'!A$55","v":"Incandescent 150 watt"},{"$f":"B22*IF(A22=C8,D8,IF(A22=C9,D9,D10))","v":47.335068400077404},0,{"$f":"'DNSP Inputs General'!J$55","v":0},null,null,0]
[{"$f":"'DNSP Inputs General'!B$56","v":"Sodium high pressure 250 watt"},{"$f":"'DNSP Inputs General'!D$56","v":1.33},{"$f":"'DNSP Inputs General'!A$56","v":"Metal halide 250 watt"},{"$f":"B23*IF(A23=C8,D8,IF(A23=C9,D9,D10))","v":25.209546636535361},8974.5986026065893,{"$f":"'DNSP Inputs General'!J$56","v":356},null,null,106.64733307248551]
[{"$f":"'DNSP Inputs General'!B$57","v":"Sodium high pressure 250 watt"},{"$f":"'DNSP Inputs General'!D$57","v":1.33},{"$f":"'DNSP Inputs General'!A$57","v":"Metal halide 400 watt"},{"$f":"B24*IF(A24=C8,D8,IF(A24=C9,D9,D10))","v":25.209546636535361},0,{"$f":"'DNSP Inputs General'!J$57","v":0},null,null,0]
[{"$f":"'DNSP Inputs General'!B$58","v":"Mercury vapour 80 watt"},{"$f":"'DNSP Inputs General'!D$58","v":2.12},{"$f":"'DNSP Inputs General'!A$58","v":"Metal halide 70 watt"},{"$f":"B25*IF(A25=C8,D8,IF(A25=C9,D9,D10))","v":36.097246405814431},{"$f":"F25*D25","v":288.77797124651545},{"$f":"'DNSP Inputs General'!J$58","v":8},null,null,{"$f":"IF(F25=0,0,E25/E$32*I$32/F25)","v":152.70703261522621}]
[{"$f":"'DNSP Inputs General'!B$59","v":"Sodium high pressure 150 watt"},{"$f":"'DNSP Inputs General'!D$59","v":1.33},{"$f":"'DNSP Inputs General'!A$59","v":"Metal halide 150 watt"},{"$f":"B26*IF(A26=C8,D8,IF(A26=C9,D9,D10))","v":23.08628275032591},1154.3141375162954,{"$f":"'DNSP Inputs General'!J$59","v":50},null,null,97.665004507116251]
[]
[]
[]
[]
[]
[null,null,null,null,{"$f":"SUM(E8:E31)","v":1997508.9465933084},{"$f":"SUM(F8:F31)","v":114319},null,null,{"$f":"'Total RAB'!M$110","v":8450330.5439801253}]
[null,null,null,"Check",{"$f":"SUM(F33:I33)","v":1.862645149230957E-9},{"$f":"ABS('DNSP Inputs General'!J$65-F32)","v":0},null,null,{"$f":"ABS(SUMPRODUCT(F8:F29,I8:I29)-I32)*IF(F32=0,0,1)","v":1.862645149230957E-9}]
[]
[]
["DEPRECIATION AND RETURN",null,null,"Year",{"$f":"E4+1","v":2016}]
[]
[]
[{"$f":"'DNSP Inputs General'!B$40","v":"Reference Light"},{"$f":"'DNSP Inputs General'!D$40","v":"Price Factor"},{"$f":"'DNSP Inputs General'!A$40","v":"Existing Lights"},"WACC and Dep",null,"Volumes","Unitisation - Luminaires",null,"RAB WDV"]
[{"$f":"'DNSP Inputs General'!B$41","v":"Mercury vapour 80 watt"},{"$f":"'DNSP Inputs General'!D$41","v":1},{"$f":"'DNSP Inputs General'!A$41","v":"Mercury vapour 80 watt"},{"$f":"'RAB 2001 to 2004'!C$15","v":3.2694685326612061},{"$f":"F40*D40","v":195978.17807031077},{"$f":"IF('DNSP Inputs General'!K$41=0,1/10^6,'DNSP Inputs General'!K$41)","v":59941.906799999997},{"$f":"IF(E$64=0,0,E40/E$64*G$64)","v":769256.82682080311},{"$f":"IF(F40=0,0,G40/F40)","v":12.833372641739237},{"$f":"IF(F40=0,0,E40/E$64*I$64/F40)","v":82.690944895229762}]
[{"$f":"'DNSP Inputs General'!B$42","v":"Sodium high pressure 150 watt"},{"$f":"'DNSP Inputs General'!D$42","v":1},{"$f":"'DNSP Inputs General'!A$42","v":"Sodium high pressure 150 watt"},{"$f":"'RAB 2001 to 2004'!C$20","v":3.333046081771819},98377.145410827216,{"$f":"IF('DNSP Inputs General'!K$42=0,1/10^6,'DNSP Inputs General'!K$42)","v":29515.687151415186},386151.61879538989,13.082928302310425,84.298939453843943]
[{"$f":"'DNSP Inputs General'!B$43","v":"Sodium high pressure 250 watt"},{"$f":"'DNSP Inputs General'!D$43","v":1},{"$f":"'DNSP Inputs General'!A$43","v":"Sodium high pressure 250 watt"},{"$f":"'RAB 2001 to 2004'!C$25","v":3.6395889952860396},49362.909938143159,{"$f":"IF('DNSP Inputs General'!K$43=0,1/10^6,'DNSP Inputs General'!K$43)","v":13562.770412284883},193760.1208234198,14.286175680443268,92.051980327675238]
[{"$f":"'DNSP Inputs General'!B$44","v":"Mercury vapour 80 watt"},{"$f":"'DNSP Inputs General'!D$44","v":2.12},{"$f":"'DNSP Inputs General'!A$44","v":"Fluorescent 20 watt"},{"$f":"B43*IF(A43=C40,D40,IF(A43=C41,D41,D42))","v":6.9312732892417568},0,{"$f":"'DNSP Inputs General'!K$44","v":0},0,0,0]
[{"$f":"'DNSP Inputs General'!B$45","v":"Mercury vapour 80 watt"},{"$f":"'DNSP Inputs General'!D$45","v":2.12},{"$f":"'DNSP Inputs General'!A$45","v":"Fluorescent 40 watt"},{"$f":"B44*IF(A44=C40,D40,IF(A44=C41,D41,D42))","v":6.9312732892417568},0,{"$f":"'DNSP Inputs General'!K$45","v":0},0,0,0]
[{"$f":"'DNSP Inputs General'!B$46","v":"Mercury vapour 80 watt"},{"$f":"'DNSP Inputs General'!D$46","v":1.39},{"$f":"'DNSP Inputs General'!A$46","v":"Mercury vapour 50 watt"},{"$f":"B45*IF(A45=C40,D40,IF(A45=C41,D41,D42))","v":4.5445612603990764},924.78091905116048,{"$f":"'DNSP Inputs General'!K$46","v":203.49179295031701},3629.9655517692181,17.838387972017539,114.94041340436935]
[{"$f":"'DNSP Inputs General'!B$47","v":"Mercury vapour 80 watt"},{"$f":"'DNSP Inputs General'!D$47","v":1.35},{"$f":"'DNSP Inputs General'!A$47","v":"Mercury vapour 125 watt"},{"$f":"B46*IF(A46=C40,D40,IF(A46=C41,D41,D42))","v":4.4137825190926288},4688.0237622488376,{"$f":"'DNSP Inputs General'!K$47","v":1062.1329306484695},18401.509387000424,17.325053066347973,111.63277560856018]
[{"$f":"'DNSP Inputs General'!B$48","v":"Sodium high pressure 250 watt"},{"$f":"'DNSP Inputs General'!D$48","v":0.76},{"$f":"'DNSP Inputs General'!A$48","v":"Mercury vapour 250 watt"},{"$f":"B47*IF(A47=C40,D40,IF(A47=C41,D41,D42))","v":2.7660876364173901},595.44909177827014,{"$f":"'DNSP Inputs General'!K$48","v":215.26761623123772},2337.2667476801739,10.857493517136882,69.959505049033169]
[{"$f":"'DNSP Inputs General'!B$49","v":"Sodium high pressure 250 watt"},{"$f":"'DNSP Inputs General'!D$49","v":0.88},{"$f":"'DNSP Inputs General'!A$49","v":"Mercury vapour 400 watt"},{"$f":"B48*IF(A48=C40,D40,IF(A48=C41,D41,D42))","v":3.2028383158517149},265.2638087188418,{"$f":"'DNSP Inputs General'!K$49","v":82.821479750001529},1041.2179446440609,12.571834598790076,81.005742688354218]
[{"$f":"'DNSP Inputs General'!B$50","v":"Sodium high pressure 250 watt"},{"$f":"'DNSP Inputs General'!D$50","v":1.33},{"$f":"'DNSP Inputs General'!A$50","v":"Mercury vapour 700 watt"},{"$f":"B49*IF(A49=C40,D40,IF(A49=C41,D41,D42))","v":4.840653363730433},0,{"$f":"'DNSP Inputs General'!K$50","v":0},0,0,0]
[{"$f":"'DNSP Inputs General'!B$51","v":"Sodium high pressure 150 watt"},{"$f":"'DNSP Inputs General'!D$51","v":1.35},{"$f":"'DNSP Inputs General'!A$51","v":"Sodium low pressure 90 watt"},{"$f":"B50*IF(A50=C40,D40,IF(A50=C41,D41,D42))","v":4.4996122103919562},0,{"$f":"'DNSP Inputs General'!K$51","v":0},0,0,0]
[{"$f":"'DNSP Inputs General'!B$52","v":"Sodium high pressure 150 watt"},{"$f":"'DNSP Inputs General'!D$52","v":1.35},{"$f":"'DNSP Inputs General'!A$52","v":"Sodium low pressure 180 watt"},{"$f":"B51*IF(A51=C40,D40,IF(A51=C41,D41,D42))","v":4.4996122103919562},0,{"$f":"'DNSP Inputs General'!K$52","v":0},0,0,0]
[{"$f":"'DNSP Inputs General'!B$53","v":"Sodium high pressure 250 watt"},{"$f":"'DNSP Inputs General'!D$53","v":1.33},{"$f":"'DNSP Inputs General'!A$53","v":"Sodium high pressure 400 watt"},{"$f":"B52*IF(A52=C40,D40,IF(A52=C41,D41,D42))","v":4.840653363730433},3691.5484641494386,{"$f":"'DNSP Inputs General'!K$53","v":762.61367769258311},14490.127857847492,19.000613654989547,122.42913383580807]
[{"$f":"'DNSP Inputs General'!B$54","v":"Mercury vapour 80 watt"},{"$f":"'DNSP Inputs General'!D$54","v":2.78},{"$f":"'DNSP Inputs General'!A$54","v":"Incandescent 100 watt"},{"$f":"B53*IF(A53=C40,D40,IF(A53=C41,D41,D42))","v":9.0891225207981527},0,{"$f":"'DNSP Inputs General'!K$54","v":0},0,0,0]
[{"$f":"'DNSP Inputs General'!B$55","v":"Mercury vapour 80 watt"},{"$f":"'DNSP Inputs General'!D$55","v":2.78},{"$f":"'DNSP Inputs General'!A$55","v":"Incandescent 150 watt"},{"$f":"B54*IF(A54=C40,D40,IF(A54=C41,D41,D42))","v":9.0891225207981527},0,{"$f":"'DNSP Inputs General'!K$55","v":0},0,0,0]
[{"$f":"'DNSP Inputs General'!B$56","v":"Sodium high pressure 250 watt"},{"$f":"'DNSP Inputs General'!D$56","v":1.33},{"$f":"'DNSP Inputs General'!A$56","v":"Metal halide 250 watt"},{"$f":"B55*IF(A55=C40,D40,IF(A55=C41,D41,D42))","v":4.840653363730433},1757.7380494377949,{"$f":"'DNSP Inputs General'!K$56","v":363.12},6899.5028303998051,19.00061365498955,122.42913383580807]
[{"$f":"'DNSP Inputs General'!B$57","v":"Sodium high pressure 250 watt"},{"$f":"'DNSP Inputs General'!D$57","v":1.33},{"$f":"'DNSP Inputs General'!A$57","v":"Metal halide 400 watt"},{"$f":"B56*IF(A56=C40,D40,IF(A56=C41,D41,D42))","v":4.840653363730433},0,{"$f":"'DNSP Inputs General'!K$57","v":0},0,0,0]
[{"$f":"'DNSP Inputs General'!B$58","v":"Mercury vapour 80 watt"},{"$f":"'DNSP Inputs General'!D$58","v":2.12},{"$f":"'DNSP Inputs General'!A$58","v":"Metal halide 70 watt"},{"$f":"B57*IF(A57=C40,D40,IF(A57=C41,D41,D42))","v":6.9312732892417568},{"$f":"F57*D57","v":56.559190040212734},{"$f":"'DNSP Inputs General'!K$58","v":8.16},{"$f":"IF(E$64=0,0,E57/E$64*G$64)","v":222.0070800039754},{"$f":"IF(F57=0,0,G57/F57)","v":27.20675000048718},{"$f":"IF(F57=0,0,E57/E$64*I$64/F57)","v":175.30480317788707}]
[{"$f":"'DNSP Inputs General'!B$59","v":"Sodium high pressure 150 watt"},{"$f":"'DNSP Inputs General'!D$59","v":1.33},{"$f":"'DNSP Inputs General'!A$59","v":"Metal halide 150 watt"},{"$f":"B58*IF(A58=C40,D40,IF(A58=C41,D41,D42))","v":4.4329512887565192},226.08051572658249,{"$f":"'DNSP Inputs General'!K$59","v":51},887.41502674571609,17.400294642072865,112.11758947361243]
[]
[]
[]
[]
[]
[null,null,null,null,{"$f":"SUM(E40:E63)","v":355923.67722043226},{"$f":"SUM(F40:F63)","v":105768.97186097267},{"$f":"'Total RAB'!N$116","v":1397077.5788657037},{"$f":"SUMPRODUCT(F40:F63,H40:H63)","v":1397077.5788657044},{"$f":"'Total RAB'!N$110","v":9001972.3040387258}]
[null,null,null,"Check",{"$f":"SUM(F65:I65)","v":3.2596290111541748E-9},{"$f":"ABS('DNSP Inputs General'!K$65-F64)","v":0},{"$f":"ABS(G64-SUM(G40:G63))*IF(F64=0,0,1)","v":6.9849193096160889E-10},{"$f":"ABS(H64-G64)*IF(F64=0,0,1)","v":6.9849193096160889E-10},{"$f":"ABS(I64-SUMPRODUCT(F40:F63,I40:I63))*IF(F64=0,0,1)","v":1.862645149230957E-9}]
[]
[]
[{"$f":"'DNSP Inputs General'!B$67","v":"Reference Light"},{"$f":"'DNSP Inputs General'!D$67","v":"Price Factor"},{"$f":"'DNSP Inputs General'!A$67","v":"Energy Efficient Lights"},"Unit cost",null,"Volumes","Unitisation - Luminaires & Ballasts"]
[{"$f":"'DNSP Inputs General'!B$68","v":"T5 2X14W"},{"$f":"'DNSP Inputs General'!D$68","v":1},{"$f":"'DNSP Inputs General'!A$68","v":"T5 2X14W"},{"$f":"'DNSP Inputs O & M'!$D$154","v":301.41588746083977},{"$f":"F69*D69","v":3150308.4309744588},{"$f":"'DNSP Inputs General'!K$68","v":10451.699999999999},{"$f":"IF(E$76=0,0,E69/E$76*G$76)","v":33247.292610462202},{"$f":"IF(F69=0,0,G69/F69)","v":3.1810416114567204}]
[{"$f":"'DNSP Inputs General'!B$69","v":"T5 2X14W"},{"$f":"'DNSP Inputs General'!D$69","v":0.98378581126179521},{"$f":"'DNSP Inputs General'!A$69","v":"T5 2X24W"},{"$f":"B70*D69","v":296.52867337285619},{"$f":"F70*D70","v":430085.18785999063},{"$f":"'DNSP Inputs General'!K$69","v":1450.4},{"$f":"IF(E$76=0,0,E70/E$76*G$76)","v":4538.9740088984463},{"$f":"IF(F70=0,0,G70/F70)","v":3.1294636023844773}]
[{"$f":"'DNSP Inputs General'!B$70","v":"T5 2X14W"},{"$f":"'DNSP Inputs General'!D$70","v":0.96128564523509352},{"$f":"'DNSP Inputs General'!A$70","v":"CF32"},{"$f":"B71*D69","v":289.74676586190168},877127.20455246593,{"$f":"'DNSP Inputs General'!K$70","v":3027.22},9256.9046699126193,3.0578896379888545]
[{"$f":"'DNSP Inputs General'!B$71","v":"T5 2X14W"},{"$f":"'DNSP Inputs General'!D$71","v":0.96128564523509352},{"$f":"'DNSP Inputs General'!A$71","v":"CF42"},{"$f":"B72*D69","v":289.74676586190168},1282042.5149091564,{"$f":"'DNSP Inputs General'!K$71","v":4424.7},13530.244281209285,3.0578896379888549]
[{"$f":"'DNSP Inputs General'!B$72","v":"Category P LED 18 Watt"},{"$f":"'DNSP Inputs General'!D$72","v":1},{"$f":"'DNSP Inputs General'!A$72","v":"Category P LED 18 Watt"},{"$f":"'DNSP Inputs O & M'!$D$191","v":352.72875158740868},13074023.521414896,{"$f":"'DNSP Inputs General'!K$72","v":37065.375199999995},137978.83449719613,3.7225802720916783]
[{"$f":"'DNSP Inputs General'!B$73","v":"Category P LED 18 Watt"},{"$f":"'DNSP Inputs General'!D$73","v":1},{"$f":"'DNSP Inputs General'!A$73","v":"Category P LED 47 Watt"},{"$f":"B74*D73","v":352.72875158740868},0,{"$f":"'DNSP Inputs General'!K$73","v":0},0,0]
[]
[null,null,null,null,{"$f":"SUM(E69:E75)","v":18813586.859710969},{"$f":"SUM(F69:F75)","v":56419.395199999992},{"$f":"'Total RAB'!N$131","v":198552.25006767869},{"$f":"SUMPRODUCT(F69:F75,H69:H75)","v":198552.25006767869}]
[null,null,null,"Check",{"$f":"SUM(F77:I77)","v":0},{"$f":"ABS('DNSP Inputs General'!K$75-F76)","v":0},{"$f":"ABS(G76-SUM(G69:G75))","v":0},{"$f":"ABS(H76-G76)","v":0}]
[]
[]
[null,null,{"$f":"'RAB 2001 to 2004'!A$27","v":"Poles & Brackets"},"Weighted Average Volumes",null,null,"Unitisation Poles & Brackets"]
[null,null,"Total Poles & Brackets",{"$f":"'DNSP Inputs General'!$D$41*F40","v":59941.906799999997},{"$f":"SUMPRODUCT('DNSP Inputs General'!$D41:$D62,'DNSP Inputs General'!K41:K62)+SUMPRODUCT('DNSP Inputs General'!$D68:$D73,'DNSP Inputs General'!K68:K73)","v":162663.32056021772},{"$f":"IF(E81=0,0,D81/E81*G81)","v":614740.25383477984},{"$f":"'Total RAB'!N$101","v":1668210.0438419222},{"$f":"F81/F40","v":10.255600574834897}]
[]
[]
[]
[]
["DEPRECIATION AND RETURN",null,null,"Year",{"$f":"E36+1","v":2017}]
[]
[]
[{"$f":"'DNSP Inputs General'!B$40","v":"Reference Light"},{"$f":"'DNSP Inputs General'!D$40","v":"Price Factor"},{"$f":"'DNSP Inputs General'!A$40","v":"Existing Lights"},{"$f":"D$39","v":"WACC and Dep"},null,{"$f":"F$39","v":"Volumes"},{"$f":"G$39","v":"Unitisation - Luminaires"},null,{"$f":"I$39","v":"RAB WDV"}]
[{"$f":"'DNSP Inputs General'!B$41","v":"Mercury vapour 80 watt"},{"$f":"'DNSP Inputs General'!D$41","v":1},{"$f":"'DNSP Inputs General'!A$41","v":"Mercury vapour 80 watt"},{"$f":"'RAB 2001 to 2004'!D$15","v":2.9463876931440529},{"$f":"F90*D90","v":144061.1396818487},{"$f":"IF('DNSP Inputs General'!L$41=0,1/10^6,'DNSP Inputs General'!L$41)","v":48894.156059999994},{"$f":"IF(E$114=0,0,E90/E$114*G$114)","v":670365.73822668241},{"$f":"IF(F90=0,0,G90/F90)","v":13.710549322173586},{"$f":"IF(F90=0,0,E90/E$114*I$114/F90)","v":93.631881971665067}]
[{"$f":"'DNSP Inputs General'!B$42","v":"Sodium high pressure 150 watt"},{"$f":"'DNSP Inputs General'!D$42","v":1},{"$f":"'DNSP Inputs General'!A$42","v":"Sodium high pressure 150 watt"},{"$f":"'RAB 2001 to 2004'!D$20","v":3.0036826652131978},92614.695718474148,{"$f":"IF('DNSP Inputs General'!L$42=0,1/10^6,'DNSP Inputs General'!L$42)","v":30833.715156091719},430967.84464615141,13.97716241667383,95.452632199081179]
[{"$f":"'DNSP Inputs General'!B$43","v":"Sodium high pressure 250 watt"},{"$f":"'DNSP Inputs General'!D$43","v":1},{"$f":"'DNSP Inputs General'!A$43","v":"Sodium high pressure 250 watt"},{"$f":"'RAB 2001 to 2004'!D$25","v":3.2799337619208515},45993.267793074097,{"$f":"IF('DNSP Inputs General'!L$43=0,1/10^6,'DNSP Inputs General'!L$43)","v":14022.620922118478},214022.40038953681,15.262653221406715,104.23148711408825]
[{"$f":"'DNSP Inputs General'!B$44","v":"Mercury vapour 80 watt"},{"$f":"'DNSP Inputs General'!D$44","v":2.12},{"$f":"'DNSP Inputs General'!A$44","v":"Fluorescent 20 watt"},{"$f":"B93*IF(A93=C90,D90,IF(A93=C91,D91,D92))","v":6.2463419094653929},0,{"$f":"'DNSP Inputs General'!L$44","v":0},0,0,0]
[{"$f":"'DNSP Inputs General'!B$45","v":"Mercury vapour 80 watt"},{"$f":"'DNSP Inputs General'!D$45","v":2.12},{"$f":"'DNSP Inputs General'!A$45","v":"Fluorescent 40 watt"},{"$f":"B94*IF(A94=C90,D90,IF(A94=C91,D91,D92))","v":6.2463419094653929},0,{"$f":"'DNSP Inputs General'!L$45","v":0},0,0,0]
[{"$f":"'DNSP Inputs General'!B$46","v":"Mercury vapour 80 watt"},{"$f":"'DNSP Inputs General'!D$46","v":1.39},{"$f":"'DNSP Inputs General'!A$46","v":"Mercury vapour 50 watt"},{"$f":"B95*IF(A95=C90,D90,IF(A95=C91,D91,D92))","v":4.0954788934702329},781.51758562153589,{"$f":"'DNSP Inputs General'!L$46","v":190.82446911582801},3636.668531009308,19.057663557821282,130.14831594061442]
[{"$f":"'DNSP Inputs General'!B$47","v":"Mercury vapour 80 watt"},{"$f":"'DNSP Inputs General'!D$47","v":1.35},{"$f":"'DNSP Inputs General'!A$47","v":"Mercury vapour 125 watt"},{"$f":"B96*IF(A96=C90,D90,IF(A96=C91,D91,D92))","v":3.9776233857444718},4386.3751720717764,{"$f":"'DNSP Inputs General'!L$47","v":1102.7628175639361},20411.303401173769,18.50924158493434,126.40304066174784]
[{"$f":"'DNSP Inputs General'!B$48","v":"Sodium high pressure 250 watt"},{"$f":"'DNSP Inputs General'!D$48","v":0.76},{"$f":"'DNSP Inputs General'!A$48","v":"Mercury vapour 250 watt"},{"$f":"B97*IF(A97=C90,D90,IF(A97=C91,D91,D92))","v":2.492749659059847},412.55137368802605,{"$f":"'DNSP Inputs General'!L$48","v":165.50052356385513},1919.7425953284426,11.599616448269105,79.215930206707071]
[{"$f":"'DNSP Inputs General'!B$49","v":"Sodium high pressure 250 watt"},{"$f":"'DNSP Inputs General'!D$49","v":0.88},{"$f":"'DNSP Inputs General'!A$49","v":"Mercury vapour 400 watt"},{"$f":"B98*IF(A98=C90,D90,IF(A98=C91,D91,D92))","v":2.8863417104903495},212.88779716253745,{"$f":"'DNSP Inputs General'!L$49","v":73.756962451396916},990.63970769278899,13.431134834837913,91.723708660397662]
[{"$f":"'DNSP Inputs General'!B$50","v":"Sodium high pressure 250 watt"},{"$f":"'DNSP Inputs General'!D$50","v":1.33},{"$f":"'DNSP Inputs General'!A$50","v":"Mercury vapour 700 watt"},{"$f":"B99*IF(A99=C90,D90,IF(A99=C91,D91,D92))","v":4.3623119033547324},0,{"$f":"'DNSP Inputs General'!L$50","v":0},0,0,0]
[{"$f":"'DNSP Inputs General'!B$51","v":"Sodium high pressure 150 watt"},{"$f":"'DNSP Inputs General'!D$51","v":1.35},{"$f":"'DNSP Inputs General'!A$51","v":"Sodium low pressure 90 watt"},{"$f":"B100*IF(A100=C90,D90,IF(A100=C91,D91,D92))","v":4.0549715980378176},0,{"$f":"'DNSP Inputs General'!L$51","v":0},0,0,0]
[{"$f":"'DNSP Inputs General'!B$52","v":"Sodium high pressure 150 watt"},{"$f":"'DNSP Inputs General'!D$52","v":1.35},{"$f":"'DNSP Inputs General'!A$52","v":"Sodium low pressure 180 watt"},{"$f":"B101*IF(A101=C90,D90,IF(A101=C91,D91,D92))","v":4.0549715980378176},0,{"$f":"'DNSP Inputs General'!L$52","v":0},0,0,0]
[{"$f":"'DNSP Inputs General'!B$53","v":"Sodium high pressure 250 watt"},{"$f":"'DNSP Inputs General'!D$53","v":1.33},{"$f":"'DNSP Inputs General'!A$53","v":"Sodium high pressure 400 watt"},{"$f":"B102*IF(A102=C90,D90,IF(A102=C91,D91,D92))","v":4.3623119033547324},3338.1996121031125,{"$f":"'DNSP Inputs General'!L$53","v":765.23634395237752},15533.784143715797,20.299328784470934,138.62787786173737]
[{"$f":"'DNSP Inputs General'!B$54","v":"Mercury vapour 80 watt"},{"$f":"'DNSP Inputs General'!D$54","v":2.78},{"$f":"'DNSP Inputs General'!A$54","v":"Incandescent 100 watt"},{"$f":"B103*IF(A103=C90,D90,IF(A103=C91,D91,D92))","v":8.1909577869404657},0,{"$f":"'DNSP Inputs General'!L$54","v":0},0,0,0]
[{"$f":"'DNSP Inputs General'!B$55","v":"Mercury vapour 80 watt"},{"$f":"'DNSP Inputs General'!D$55","v":2.78},{"$f":"'DNSP Inputs General'!A$55","v":"Incandescent 150 watt"},{"$f":"B104*IF(A104=C90,D90,IF(A104=C91,D91,D92))","v":8.1909577869404657},0,{"$f":"'DNSP Inputs General'!L$55","v":0},0,0,0]
[{"$f":"'DNSP Inputs General'!B$56","v":"Sodium high pressure 250 watt"},{"$f":"'DNSP Inputs General'!D$56","v":1.33},{"$f":"'DNSP Inputs General'!A$56","v":"Metal halide 250 watt"},{"$f":"B105*IF(A105=C90,D90,IF(A105=C91,D91,D92))","v":4.3623119033547324},1615.7235523130939,{"$f":"'DNSP Inputs General'!L$56","v":370.38240000000002},7518.5141135814274,20.299328784470934,138.62787786173737]
[{"$f":"'DNSP Inputs General'!B$57","v":"Sodium high pressure 250 watt"},{"$f":"'DNSP Inputs General'!D$57","v":1.33},{"$f":"'DNSP Inputs General'!A$57","v":"Metal halide 400 watt"},{"$f":"B106*IF(A106=C90,D90,IF(A106=C91,D91,D92))","v":4.3623119033547324},0,{"$f":"'DNSP Inputs General'!L$57","v":0},0,0,0]
[{"$f":"'DNSP Inputs General'!B$58","v":"Mercury vapour 80 watt"},{"$f":"'DNSP Inputs General'!D$58","v":2.12},{"$f":"'DNSP Inputs General'!A$58","v":"Metal halide 70 watt"},{"$f":"B107*IF(A107=C90,D90,IF(A107=C91,D91,D92))","v":6.2463419094653929},{"$f":"F107*D107","v":51.989552980862356},{"$f":"'DNSP Inputs General'!L$58","v":8.3231999999999999},{"$f":"IF(E$114=0,0,E107/E$114*G$114)","v":241.92516553082822},{"$f":"IF(F107=0,0,G107/F107)","v":29.066364563008005},{"$f":"IF(F107=0,0,E107/E$114*I$114/F107)","v":198.49958977992998}]
[{"$f":"'DNSP Inputs General'!B$59","v":"Sodium high pressure 150 watt"},{"$f":"'DNSP Inputs General'!D$59","v":1.33},{"$f":"'DNSP Inputs General'!A$59","v":"Metal halide 150 watt"},{"$f":"B108*IF(A108=C90,D90,IF(A108=C91,D91,D92))","v":3.9948979447335535},207.81459108503947,{"$f":"'DNSP Inputs General'!L$59","v":52.02},967.03234525744563,18.589626014176194,126.95200082477797]
[]
[]
[]
[]
[]
[null,null,null,null,{"$f":"SUM(E90:E113)","v":293676.16243042296},{"$f":"SUM(F90:F113)","v":96479.298854857596},{"$f":"'Total RAB'!O$116","v":1366575.5932656606},{"$f":"SUMPRODUCT(F90:F113,H90:H113)","v":1366575.5932656606},{"$f":"'Total RAB'!O$110","v":9332597.9614158385}]
[null,null,null,"Check",{"$f":"SUM(F115:I115)","v":3.7252902984619141E-9},{"$f":"ABS('DNSP Inputs General'!L$65-F114)","v":0},{"$f":"ABS(G114-SUM(G90:G113))*IF(F114=0,0,1)","v":0},{"$f":"ABS(H114-G114)*IF(F114=0,0,1)","v":0},{"$f":"ABS(I114-SUMPRODUCT(F90:F113,I90:I113))*IF(F114=0,0,1)","v":3.7252902984619141E-9}]
[]
[]
[{"$f":"'DNSP Inputs General'!B$67","v":"Reference Light"},{"$f":"'DNSP Inputs General'!D$67","v":"Price Factor"},{"$f":"'DNSP Inputs General'!A$67","v":"Energy Efficient Lights"},{"$f":"D$68","v":"Unit cost"},null,{"$f":"F$68","v":"Volumes"},{"$f":"G$68","v":"Unitisation - Luminaires & Ballasts"}]
[{"$f":"'DNSP Inputs General'!B$68","v":"T5 2X14W"},{"$f":"'DNSP Inputs General'!D$68","v":1},{"$f":"'DNSP Inputs General'!A$68","v":"T5 2X14W"},{"$f":"'DNSP Inputs O & M'!$E$154","v":301.41588746083977},{"$f":"F119*D119","v":3087302.2623549695},{"$f":"'DNSP Inputs General'!L$68","v":10242.665999999999},{"$f":"IF(E$126=0,0,E119/E$126*G$126)","v":22740.083278494389},{"$f":"IF(F119=0,0,G119/F119)","v":2.2201332425068228}]
[{"$f":"'DNSP Inputs General'!B$69","v":"T5 2X14W"},{"$f":"'DNSP Inputs General'!D$69","v":0.98378581126179521},{"$f":"'DNSP Inputs General'!A$69","v":"T5 2X24W"},{"$f":"B120*D119","v":296.52867337285619},{"$f":"F120*D120","v":421483.48410279083},{"$f":"'DNSP Inputs General'!L$69","v":1421.3920000000001},{"$f":"IF(E$126=0,0,E120/E$126*G$126)","v":3104.5128447178336},{"$f":"IF(F120=0,0,G120/F120)","v":2.1841355830888549}]
[{"$f":"'DNSP Inputs General'!B$70","v":"T5 2X14W"},{"$f":"'DNSP Inputs General'!D$70","v":0.96128564523509352},{"$f":"'DNSP Inputs General'!A$70","v":"CF32"},{"$f":"B121*D119","v":289.74676586190168},859584.66046141658,{"$f":"'DNSP Inputs General'!L$70","v":2966.6755999999996},6331.4263077365858,2.1341822165310513]
[{"$f":"'DNSP Inputs General'!B$71","v":"T5 2X14W"},{"$f":"'DNSP Inputs General'!D$71","v":0.96128564523509352},{"$f":"'DNSP Inputs General'!A$71","v":"CF42"},{"$f":"B122*D119","v":289.74676586190168},1256401.6646109733,{"$f":"'DNSP Inputs General'!L$71","v":4336.2060000000001},9254.2537324152454,2.1341822165310518]
[{"$f":"'DNSP Inputs General'!B$72","v":"Category P LED 18 Watt"},{"$f":"'DNSP Inputs General'!D$72","v":1},{"$f":"'DNSP Inputs General'!A$72","v":"Category P LED 18 Watt"},{"$f":"'DNSP Inputs O & M'!$E$191","v":352.72875158740868},18667971.132562365,{"$f":"'DNSP Inputs General'!L$72","v":52924.438534000001},137502.31824440268,2.5980874252651298]
[{"$f":"'DNSP Inputs General'!B$73","v":"Category P LED 18 Watt"},{"$f":"'DNSP Inputs General'!D$73","v":1},{"$f":"'DNSP Inputs General'!A$73","v":"Category P LED 47 Watt"},{"$f":"B124*D123","v":352.72875158740868},0,{"$f":"'DNSP Inputs General'!L$73","v":0},0,0]
[]
[null,null,null,null,{"$f":"SUM(E119:E125)","v":24292743.204092517},{"$f":"SUM(F119:F125)","v":71891.378133999999},{"$f":"'Total RAB'!O$131","v":178932.59440776674},{"$f":"SUMPRODUCT(F119:F125,H119:H125)","v":178932.59440776671}]
[null,null,null,"Check",{"$f":"SUM(F127:I127)","v":2.9103830456733704E-11},{"$f":"ABS('DNSP Inputs General'!L$75-F126)","v":0},{"$f":"ABS(G126-SUM(G119:G125))","v":0},{"$f":"ABS(H126-G126)","v":2.9103830456733704E-11}]
[]
[]
[null,null,{"$f":"'RAB 2001 to 2004'!A$27","v":"Poles & Brackets"},{"$f":"D$80","v":"Weighted Average Volumes"},null,null,{"$f":"G$80","v":"Unitisation Poles & Brackets"}]
[null,null,"Total Poles & Brackets",{"$f":"'DNSP Inputs General'!$D$41*F90","v":48894.156059999994},{"$f":"SUMPRODUCT('DNSP Inputs General'!$D41:$D62,'DNSP Inputs General'!L41:L62)+SUMPRODUCT('DNSP Inputs General'!$D68:$D73,'DNSP Inputs General'!L68:L73)","v":168877.96425908746},{"$f":"IF(E131=0,0,D131/E131*G131)","v":428805.56423383614},{"$f":"'Total RAB'!O$101","v":1481072.9254006397},{"$f":"F131/F90","v":8.7700780377031453}]
[]
[]
[]
[]
["DEPRECIATION AND RETURN",null,null,"Year",{"$f":"E86+1","v":2018}]
[]
[]
[{"$f":"'DNSP Inputs General'!B$40","v":"Reference Light"},{"$f":"'DNSP Inputs General'!D$40","v":"Price Factor"},{"$f":"'DNSP Inputs General'!A$40","v":"Existing Lights"},{"$f":"D$39","v":"WACC and Dep"},null,{"$f":"F$39","v":"Volumes"},{"$f":"G$39","v":"Unitisation - Luminaires"},null,{"$f":"I$39","v":"RAB WDV"}]
[{"$f":"'DNSP Inputs General'!B$41","v":"Mercury vapour 80 watt"},{"$f":"'DNSP Inputs General'!D$41","v":1},{"$f":"'DNSP Inputs General'!A$41","v":"Mercury vapour 80 watt"},{"$f":"'RAB 2001 to 2004'!E$15","v":2.9205130125117509},{"$f":"F140*D140","v":128516.41710810925},{"$f":"IF('DNSP Inputs General'!M$41=0,1/10^6,'DNSP Inputs General'!M$41)","v":44004.740453999999},{"$f":"IF(E$164=0,0,E140/E$164*G$164)","v":710131.48942627816},{"$f":"IF(F140=0,0,G140/F140)","v":16.137613404824155},{"$f":"IF(F140=0,0,E140/E$164*I$164/F140)","v":104.34913578933963}]
[{"$f":"'DNSP Inputs General'!B$42","v":"Sodium high pressure 150 watt"},{"$f":"'DNSP Inputs General'!D$42","v":1},{"$f":"'DNSP Inputs General'!A$42","v":"Sodium high pressure 150 watt"},{"$f":"'RAB 2001 to 2004'!E$20","v":2.9773048297830478},95900.774725025942,{"$f":"IF('DNSP Inputs General'!M$42=0,1/10^6,'DNSP Inputs General'!M$42)","v":32210.599924366532},529910.19766236132,16.451422789598439,106.37829197757696]
[{"$f":"'DNSP Inputs General'!B$43","v":"Sodium high pressure 250 watt"},{"$f":"'DNSP Inputs General'!D$43","v":1},{"$f":"'DNSP Inputs General'!A$43","v":"Sodium high pressure 250 watt"},{"$f":"'RAB 2001 to 2004'!E$25","v":3.2511299358723367},47135.086064211901,{"$f":"IF('DNSP Inputs General'!M$43=0,1/10^6,'DNSP Inputs General'!M$43)","v":14498.062825521833},260450.06252281016,17.964473299448247,116.16198855945498]
[{"$f":"'DNSP Inputs General'!B$44","v":"Mercury vapour 80 watt"},{"$f":"'DNSP Inputs General'!D$44","v":2.12},{"$f":"'DNSP Inputs General'!A$44","v":"Fluorescent 20 watt"},{"$f":"B143*IF(A143=C140,D140,IF(A143=C141,D141,D142))","v":6.1914875865249126},0,{"$f":"'DNSP Inputs General'!M$44","v":0},0,0,0]
[{"$f":"'DNSP Inputs General'!B$45","v":"Mercury vapour 80 watt"},{"$f":"'DNSP Inputs General'!D$45","v":2.12},{"$f":"'DNSP Inputs General'!A$45","v":"Fluorescent 40 watt"},{"$f":"B144*IF(A144=C140,D140,IF(A144=C141,D141,D142))","v":6.1914875865249126},0,{"$f":"'DNSP Inputs General'!M$45","v":0},0,0,0]
[{"$f":"'DNSP Inputs General'!B$46","v":"Mercury vapour 80 watt"},{"$f":"'DNSP Inputs General'!D$46","v":1.39},{"$f":"'DNSP Inputs General'!A$46","v":"Mercury vapour 50 watt"},{"$f":"B145*IF(A145=C140,D140,IF(A145=C141,D141,D142))","v":4.0595130873913332},726.43234484260302,{"$f":"'DNSP Inputs General'!M$46","v":178.94568368282134},4013.9812065920955,22.431282632705575,145.04529874718204]
[{"$f":"'DNSP Inputs General'!B$47","v":"Mercury vapour 80 watt"},{"$f":"'DNSP Inputs General'!D$47","v":1.35},{"$f":"'DNSP Inputs General'!A$47","v":"Mercury vapour 125 watt"},{"$f":"B146*IF(A146=C140,D140,IF(A146=C141,D141,D142))","v":3.9426925668908641},4514.173726652054,{"$f":"'DNSP Inputs General'!M$47","v":1144.9469239778564},24943.559618066276,21.785778096512612,140.87133331560852]
[{"$f":"'DNSP Inputs General'!B$48","v":"Sodium high pressure 250 watt"},{"$f":"'DNSP Inputs General'!D$48","v":0.76},{"$f":"'DNSP Inputs General'!A$48","v":"Mercury vapour 250 watt"},{"$f":"B147*IF(A147=C140,D140,IF(A147=C141,D141,D142))","v":2.470858751262976},314.38944833523709,{"$f":"'DNSP Inputs General'!M$48","v":127.23893997361742},1737.1932102526732,13.652999707580671,88.283111305185813]
[{"$f":"'DNSP Inputs General'!B$49","v":"Sodium high pressure 250 watt"},{"$f":"'DNSP Inputs General'!D$49","v":0.88},{"$f":"'DNSP Inputs General'!A$49","v":"Mercury vapour 400 watt"},{"$f":"B148*IF(A148=C140,D140,IF(A148=C141,D141,D142))","v":2.8609943435676564},187.92305285723765,{"$f":"'DNSP Inputs General'!M$49","v":65.684524431075189},1038.3893390895257,15.80873650351446,102.2225499323204]
[{"$f":"'DNSP Inputs General'!B$50","v":"Sodium high pressure 250 watt"},{"$f":"'DNSP Inputs General'!D$50","v":1.33},{"$f":"'DNSP Inputs General'!A$50","v":"Mercury vapour 700 watt"},{"$f":"B149*IF(A149=C140,D140,IF(A149=C141,D141,D142))","v":4.3240028147102079},0,{"$f":"'DNSP Inputs General'!M$50","v":0},0,0,0]
[{"$f":"'DNSP Inputs General'!B$51","v":"Sodium high pressure 150 watt"},{"$f":"'DNSP Inputs General'!D$51","v":1.35},{"$f":"'DNSP Inputs General'!A$51","v":"Sodium low pressure 90 watt"},{"$f":"B150*IF(A150=C140,D140,IF(A150=C141,D141,D142))","v":4.0193615202071147},0,{"$f":"'DNSP Inputs General'!M$51","v":0},0,0,0]
[{"$f":"'DNSP Inputs General'!B$52","v":"Sodium high pressure 150 watt"},{"$f":"'DNSP Inputs General'!D$52","v":1.35},{"$f":"'DNSP Inputs General'!A$52","v":"Sodium low pressure 180 watt"},{"$f":"B151*IF(A151=C140,D140,IF(A151=C141,D141,D142))","v":4.0193615202071147},0,{"$f":"'DNSP Inputs General'!M$52","v":0},0,0,0]
[{"$f":"'DNSP Inputs General'!B$53","v":"Sodium high pressure 250 watt"},{"$f":"'DNSP Inputs General'!D$53","v":1.33},{"$f":"'DNSP Inputs General'!A$53","v":"Sodium high pressure 400 watt"},{"$f":"B152*IF(A152=C140,D140,IF(A152=C141,D141,D142))","v":4.3240028147102079},3320.2635217120783,{"$f":"'DNSP Inputs General'!M$53","v":767.86802969151177},18346.478473467821,23.892749488266173,154.49544478407515]
[{"$f":"'DNSP Inputs General'!B$54","v":"Mercury vapour 80 watt"},{"$f":"'DNSP Inputs General'!D$54","v":2.78},{"$f":"'DNSP Inputs General'!A$54","v":"Incandescent 100 watt"},{"$f":"B153*IF(A153=C140,D140,IF(A153=C141,D141,D142))","v":8.1190261747826664},0,{"$f":"'DNSP Inputs General'!M$54","v":0},0,0,0]
[{"$f":"'DNSP Inputs General'!B$55","v":"Mercury vapour 80 watt"},{"$f":"'DNSP Inputs General'!D$55","v":2.78},{"$f":"'DNSP Inputs General'!A$55","v":"Incandescent 150 watt"},{"$f":"B154*IF(A154=C140,D140,IF(A154=C141,D141,D142))","v":8.1190261747826664},0,{"$f":"'DNSP Inputs General'!M$55","v":0},0,0,0]
[{"$f":"'DNSP Inputs General'!B$56","v":"Sodium high pressure 250 watt"},{"$f":"'DNSP Inputs General'!D$56","v":1.33},{"$f":"'DNSP Inputs General'!A$56","v":"Metal halide 250 watt"},{"$f":"B155*IF(A155=C140,D140,IF(A155=C141,D141,D142))","v":4.3240028147102079},1633.5652309215045,{"$f":"'DNSP Inputs General'!M$56","v":377.79004800000001},9026.4429760240528,23.892749488266173,154.49544478407515]
[{"$f":"'DNSP Inputs General'!B$57","v":"Sodium high pressure 250 watt"},{"$f":"'DNSP Inputs General'!D$57","v":1.33},{"$f":"'DNSP Inputs General'!A$57","v":"Metal halide 400 watt"},{"$f":"B156*IF(A156=C140,D140,IF(A156=C141,D141,D142))","v":4.3240028147102079},0,{"$f":"'DNSP Inputs General'!M$57","v":0},0,0,0]
[{"$f":"'DNSP Inputs General'!B$58","v":"Mercury vapour 80 watt"},{"$f":"'DNSP Inputs General'!D$58","v":2.12},{"$f":"'DNSP Inputs General'!A$58","v":"Metal halide 70 watt"},{"$f":"B157*IF(A157=C140,D140,IF(A157=C141,D141,D142))","v":6.1914875865249126},{"$f":"F157*D157","v":52.563649269767431},{"$f":"'DNSP Inputs General'!M$58","v":8.4896639999999994},{"$f":"IF(E$164=0,0,E157/E$164*G$164)","v":290.44618100596847},{"$f":"IF(F157=0,0,G157/F157)","v":34.211740418227208},{"$f":"IF(F157=0,0,E157/E$164*I$164/F157)","v":221.22016787339999}]
[{"$f":"'DNSP Inputs General'!B$59","v":"Sodium high pressure 150 watt"},{"$f":"'DNSP Inputs General'!D$59","v":1.33},{"$f":"'DNSP Inputs General'!A$59","v":"Metal halide 150 watt"},{"$f":"B158*IF(A158=C140,D140,IF(A158=C141,D141,D142))","v":3.9598154236114538},210.10939030299318,{"$f":"'DNSP Inputs General'!M$59","v":53.060400000000001},1160.9823681343282,21.880392310165927,141.48312833017738]
[]
[]
[]
[]
[]
[null,null,null,null,{"$f":"SUM(E140:E163)","v":282511.6982622405},{"$f":"SUM(F140:F163)","v":93437.427417645216},{"$f":"'Total RAB'!P$116","v":1561049.2229840821},{"$f":"SUMPRODUCT(F140:F163,H140:H163)","v":1561049.2229840825},{"$f":"'Total RAB'!P$110","v":10094066.158154076}]
[null,null,null,"Check",{"$f":"SUM(F165:I165)","v":9.3132257461547852E-10},{"$f":"ABS('DNSP Inputs General'!M$65-F164)","v":0},{"$f":"ABS(G164-SUM(G140:G163))*IF(F164=0,0,1)","v":4.6566128730773926E-10},{"$f":"ABS(H164-G164)*IF(F164=0,0,1)","v":4.6566128730773926E-10},{"$f":"ABS(I164-SUMPRODUCT(F140:F163,I140:I163))*IF(F164=0,0,1)","v":0}]
[]
[]
[{"$f":"'DNSP Inputs General'!B$67","v":"Reference Light"},{"$f":"'DNSP Inputs General'!D$67","v":"Price Factor"},{"$f":"'DNSP Inputs General'!A$67","v":"Energy Efficient Lights"},{"$f":"D$68","v":"Unit cost"},null,{"$f":"F$68","v":"Volumes"},{"$f":"G$68","v":"Unitisation - Luminaires & Ballasts"}]
[{"$f":"'DNSP Inputs General'!B$68","v":"T5 2X14W"},{"$f":"'DNSP Inputs General'!D$68","v":1},{"$f":"'DNSP Inputs General'!A$68","v":"T5 2X14W"},{"$f":"'DNSP Inputs O & M'!$F$154","v":301.41588746083977},{"$f":"F169*D169","v":3025556.2171078702},{"$f":"'DNSP Inputs General'!M$68","v":10037.812679999999},{"$f":"IF(E$176=0,0,E169/E$176*G$176)","v":23049.899826994631},{"$f":"IF(F169=0,0,G169/F169)","v":2.2963070304072097}]
[{"$f":"'DNSP Inputs General'!B$69","v":"T5 2X14W"},{"$f":"'DNSP Inputs General'!D$69","v":0.98378581126179521},{"$f":"'DNSP Inputs General'!A$69","v":"T5 2X24W"},{"$f":"B170*D169","v":296.52867337285619},{"$f":"F170*D170","v":413053.814420735},{"$f":"'DNSP Inputs General'!M$69","v":1392.96416},{"$f":"IF(E$176=0,0,E170/E$176*G$176)","v":3146.8094995957317},{"$f":"IF(F170=0,0,G170/F170)","v":2.2590742748153203}]
[{"$f":"'DNSP Inputs General'!B$70","v":"T5 2X14W"},{"$f":"'DNSP Inputs General'!D$70","v":0.96128564523509352},{"$f":"'DNSP Inputs General'!A$70","v":"CF32"},{"$f":"B171*D169","v":289.74676586190168},842392.96725218813,{"$f":"'DNSP Inputs General'!M$70","v":2907.3420879999994},6417.6872339488336,2.2074069853828755]
[{"$f":"'DNSP Inputs General'!B$71","v":"T5 2X14W"},{"$f":"'DNSP Inputs General'!D$71","v":0.96128564523509352},{"$f":"'DNSP Inputs General'!A$71","v":"CF42"},{"$f":"B172*D169","v":289.74676586190168},1231273.6313187538,{"$f":"'DNSP Inputs General'!M$71","v":4249.4818800000003},9380.3359861699555,2.2074069853828755]
[{"$f":"'DNSP Inputs General'!B$72","v":"Category P LED 18 Watt"},{"$f":"'DNSP Inputs General'!D$72","v":1},{"$f":"'DNSP Inputs General'!A$72","v":"Category P LED 18 Watt"},{"$f":"'DNSP Inputs O & M'!$F$191","v":352.72875158740868},20161408.823167358,{"$f":"'DNSP Inputs General'!M$72","v":57158.393616720008},153597.69258867641,2.687228994198779]
[{"$f":"'DNSP Inputs General'!B$73","v":"Category P LED 18 Watt"},{"$f":"'DNSP Inputs General'!D$73","v":1},{"$f":"'DNSP Inputs General'!A$73","v":"Category P LED 47 Watt"},{"$f":"B174*D173","v":352.72875158740868},0,{"$f":"'DNSP Inputs General'!M$73","v":0},0,0]
[]
[null,null,null,null,{"$f":"SUM(E169:E175)","v":25673685.453266904},{"$f":"SUM(F169:F175)","v":75745.994424720004},{"$f":"'Total RAB'!P$131","v":195592.42513538554},{"$f":"SUMPRODUCT(F169:F175,H169:H175)","v":195592.42513538557}]
[null,null,null,"Check",{"$f":"SUM(F177:I177)","v":5.8207660913467407E-11},{"$f":"ABS('DNSP Inputs General'!M$75-F176)","v":0},{"$f":"ABS(G176-SUM(G169:G175))","v":2.9103830456733704E-11},{"$f":"ABS(H176-G176)","v":2.9103830456733704E-11}]
[]
[]
[null,null,{"$f":"'RAB 2001 to 2004'!A$27","v":"Poles & Brackets"},{"$f":"D$80","v":"Weighted Average Volumes"},null,null,{"$f":"G$80","v":"Unitisation Poles & Brackets"}]
[null,null,"Total Poles & Brackets",{"$f":"'DNSP Inputs General'!$D$41*F140","v":44004.740453999999},{"$f":"SUMPRODUCT('DNSP Inputs General'!$D41:$D62,'DNSP Inputs General'!M41:M62)+SUMPRODUCT('DNSP Inputs General'!$D68:$D73,'DNSP Inputs General'!M68:M73)","v":169720.95050930366},{"$f":"IF(E181=0,0,D181/E181*G181)","v":434656.46104726131},{"$f":"'Total RAB'!P$101","v":1676417.2894296809},{"$f":"F181/F140","v":9.8774917557263162}]
[]
[]
[]
[]
["DEPRECIATION AND RETURN",null,null,"Year",{"$f":"E136+1","v":2019}]
[]
[]
[{"$f":"'DNSP Inputs General'!B$40","v":"Reference Light"},{"$f":"'DNSP Inputs General'!D$40","v":"Price Factor"},{"$f":"'DNSP Inputs General'!A$40","v":"Existing Lights"},{"$f":"D$39","v":"WACC and Dep"},null,{"$f":"F$39","v":"Volumes"},{"$f":"G$39","v":"Unitisation - Luminaires"},null,{"$f":"I$39","v":"RAB WDV"}]
[{"$f":"'DNSP Inputs General'!B$41","v":"Mercury vapour 80 watt"},{"$f":"'DNSP Inputs General'!D$41","v":1},{"$f":"'DNSP Inputs General'!A$41","v":"Mercury vapour 80 watt"},{"$f":"'RAB 2001 to 2004'!F$15","v":2.8082986266089924},{"$f":"F190*D190","v":111220.60696312804},{"$f":"IF('DNSP Inputs General'!N$41=0,1/10^6,'DNSP Inputs General'!N$41)","v":39604.2664086},{"$f":"IF(E$214=0,0,E190/E$214*G$214)","v":729213.70204473741},{"$f":"IF(F190=0,0,G190/F190)","v":18.412503706580203},{"$f":"IF(F190=0,0,E190/E$214*I$214/F190)","v":114.70658825584876}]
[{"$f":"'DNSP Inputs General'!B$42","v":"Sodium high pressure 150 watt"},{"$f":"'DNSP Inputs General'!D$42","v":1},{"$f":"'DNSP Inputs General'!A$42","v":"Sodium high pressure 150 watt"},{"$f":"'RAB 2001 to 2004'!F$20","v":2.8629083413277252},96333.91607409573,{"$f":"IF('DNSP Inputs General'!N$42=0,1/10^6,'DNSP Inputs General'!N$42)","v":33648.969714978419},631609.67639879067,18.770550235231646,116.93715376681612]
[{"$f":"'DNSP Inputs General'!B$43","v":"Sodium high pressure 250 watt"},{"$f":"'DNSP Inputs General'!D$43","v":1},{"$f":"'DNSP Inputs General'!A$43","v":"Sodium high pressure 250 watt"},{"$f":"'RAB 2001 to 2004'!F$25","v":3.1262123108930777},46860.749442209351,{"$f":"IF('DNSP Inputs General'!N$43=0,1/10^6,'DNSP Inputs General'!N$43)","v":14989.624754187744},307240.73096160061,20.496892750818521,127.69195731117175]
[{"$f":"'DNSP Inputs General'!B$44","v":"Mercury vapour 80 watt"},{"$f":"'DNSP Inputs General'!D$44","v":2.12},{"$f":"'DNSP Inputs General'!A$44","v":"Fluorescent 20 watt"},{"$f":"B193*IF(A193=C190,D190,IF(A193=C191,D191,D192))","v":5.9535930884110639},0,{"$f":"'DNSP Inputs General'!N$44","v":0},0,0,0]
[{"$f":"'DNSP Inputs General'!B$45","v":"Mercury vapour 80 watt"},{"$f":"'DNSP Inputs General'!D$45","v":2.12},{"$f":"'DNSP Inputs General'!A$45","v":"Fluorescent 40 watt"},{"$f":"B194*IF(A194=C190,D190,IF(A194=C191,D191,D192))","v":5.9535930884110639},0,{"$f":"'DNSP Inputs General'!N$45","v":0},0,0,0]
[{"$f":"'DNSP Inputs General'!B$46","v":"Mercury vapour 80 watt"},{"$f":"'DNSP Inputs General'!D$46","v":1.39},{"$f":"'DNSP Inputs General'!A$46","v":"Mercury vapour 50 watt"},{"$f":"B195*IF(A195=C190,D190,IF(A195=C191,D191,D192))","v":3.9035350909864994},655.03797685471966,{"$f":"'DNSP Inputs General'!N$46","v":167.80635029187832},4294.7317149642995,25.593380152146487,159.4421576756298]
[{"$f":"'DNSP Inputs General'!B$47","v":"Mercury vapour 80 watt"},{"$f":"'DNSP Inputs General'!D$47","v":1.35},{"$f":"'DNSP Inputs General'!A$47","v":"Mercury vapour 125 watt"},{"$f":"B196*IF(A196=C190,D190,IF(A196=C191,D191,D192))","v":3.79120314592214},4506.7726600560927,{"$f":"'DNSP Inputs General'!N$47","v":1188.7447036183296},29548.484453092613,24.85688000388328,154.85389414539583]
[{"$f":"'DNSP Inputs General'!B$48","v":"Sodium high pressure 250 watt"},{"$f":"'DNSP Inputs General'!D$48","v":0.76},{"$f":"'DNSP Inputs General'!A$48","v":"Mercury vapour 250 watt"},{"$f":"B197*IF(A197=C190,D190,IF(A197=C191,D191,D192))","v":2.3759213562787389},232.41961312775476,{"$f":"'DNSP Inputs General'!N$48","v":97.822940356822016},1523.8504009682581,15.577638490622075,97.045887556490527]
[{"$f":"'DNSP Inputs General'!B$49","v":"Sodium high pressure 250 watt"},{"$f":"'DNSP Inputs General'!D$49","v":0.88},{"$f":"'DNSP Inputs General'!A$49","v":"Mercury vapour 400 watt"},{"$f":"B198*IF(A198=C190,D190,IF(A198=C191,D191,D192))","v":2.7510668335859085},160.92526691242801,{"$f":"'DNSP Inputs General'!N$49","v":58.495586129642732},1055.100424660088,18.037265620720298,112.36892243383114]
[{"$f":"'DNSP Inputs General'!B$50","v":"Sodium high pressure 250 watt"},{"$f":"'DNSP Inputs General'!D$50","v":1.33},{"$f":"'DNSP Inputs General'!A$50","v":"Mercury vapour 700 watt"},{"$f":"B199*IF(A199=C190,D190,IF(A199=C191,D191,D192))","v":4.1578623734877933},0,{"$f":"'DNSP Inputs General'!N$50","v":0},0,0,0]
[{"$f":"'DNSP Inputs General'!B$51","v":"Sodium high pressure 150 watt"},{"$f":"'DNSP Inputs General'!D$51","v":1.35},{"$f":"'DNSP Inputs General'!A$51","v":"Sodium low pressure 90 watt"},{"$f":"B200*IF(A200=C190,D190,IF(A200=C191,D191,D192))","v":3.8649262607924291},0,{"$f":"'DNSP Inputs General'!N$51","v":0},0,0,0]
[{"$f":"'DNSP Inputs General'!B$52","v":"Sodium high pressure 150 watt"},{"$f":"'DNSP Inputs General'!D$52","v":1.35},{"$f":"'DNSP Inputs General'!A$52","v":"Sodium low pressure 180 watt"},{"$f":"B201*IF(A201=C190,D190,IF(A201=C191,D191,D192))","v":3.8649262607924291},0,{"$f":"'DNSP Inputs General'!N$52","v":0},0,0,0]
[{"$f":"'DNSP Inputs General'!B$53","v":"Sodium high pressure 250 watt"},{"$f":"'DNSP Inputs General'!D$53","v":1.33},{"$f":"'DNSP Inputs General'!A$53","v":"Sodium high pressure 400 watt"},{"$f":"B202*IF(A202=C190,D190,IF(A202=C191,D191,D192))","v":4.1578623734877933},3203.669406296302,{"$f":"'DNSP Inputs General'!N$53","v":770.50876592842269},21004.737266604545,27.26086735858863,169.83030322385841]
[{"$f":"'DNSP Inputs General'!B$54","v":"Mercury vapour 80 watt"},{"$f":"'DNSP Inputs General'!D$54","v":2.78},{"$f":"'DNSP Inputs General'!A$54","v":"Incandescent 100 watt"},{"$f":"B203*IF(A203=C190,D190,IF(A203=C191,D191,D192))","v":7.8070701819729988},0,{"$f":"'DNSP Inputs General'!N$54","v":0},0,0,0]
[{"$f":"'DNSP Inputs General'!B$55","v":"Mercury vapour 80 watt"},{"$f":"'DNSP Inputs General'!D$55","v":2.78},{"$f":"'DNSP Inputs General'!A$55","v":"Incandescent 150 watt"},{"$f":"B204*IF(A204=C190,D190,IF(A204=C191,D191,D192))","v":7.8070701819729988},0,{"$f":"'DNSP Inputs General'!N$55","v":0},0,0,0]
[{"$f":"'DNSP Inputs General'!B$56","v":"Sodium high pressure 250 watt"},{"$f":"'DNSP Inputs General'!D$56","v":1.33},{"$f":"'DNSP Inputs General'!A$56","v":"Metal halide 250 watt"},{"$f":"B205*IF(A205=C190,D190,IF(A205=C191,D191,D192))","v":4.1578623734877933},1602.2150061704945,{"$f":"'DNSP Inputs General'!N$56","v":385.34584896000001},10504.862075681289,27.26086735858863,169.83030322385844]
[{"$f":"'DNSP Inputs General'!B$57","v":"Sodium high pressure 250 watt"},{"$f":"'DNSP Inputs General'!D$57","v":1.33},{"$f":"'DNSP Inputs General'!A$57","v":"Metal halide 400 watt"},{"$f":"B206*IF(A206=C190,D190,IF(A206=C191,D191,D192))","v":4.1578623734877933},0,{"$f":"'DNSP Inputs General'!N$57","v":0},0,0,0]
[{"$f":"'DNSP Inputs General'!B$58","v":"Mercury vapour 80 watt"},{"$f":"'DNSP Inputs General'!D$58","v":2.12},{"$f":"'DNSP Inputs General'!A$58","v":"Metal halide 70 watt"},{"$f":"B207*IF(A207=C190,D190,IF(A207=C191,D191,D192))","v":5.9535930884110639},{"$f":"F207*D207","v":51.55488501159887},{"$f":"'DNSP Inputs General'!N$58","v":8.6594572799999998},{"$f":"IF(E$214=0,0,E207/E$214*G$214)","v":338.01765324174266},{"$f":"IF(F207=0,0,G207/F207)","v":39.03450785795004},{"$f":"IF(F207=0,0,E207/E$214*I$214/F207)","v":243.17796710239941}]
[{"$f":"'DNSP Inputs General'!B$59","v":"Sodium high pressure 150 watt"},{"$f":"'DNSP Inputs General'!D$59","v":1.33},{"$f":"'DNSP Inputs General'!A$59","v":"Metal halide 150 watt"},{"$f":"B208*IF(A208=C190,D190,IF(A208=C191,D191,D192))","v":3.8076680939658747},206.07711997572824,{"$f":"'DNSP Inputs General'!N$59","v":54.121608000000002},1351.1368411614349,24.964831812858087,155.52641450986545]
[]
[]
[]
[]
[]
[null,null,null,null,{"$f":"SUM(E190:E213)","v":265033.94441383821},{"$f":"SUM(F190:F213)","v":90974.366138331257},{"$f":"'Total RAB'!Q$116","v":1737685.0302355029},{"$f":"SUMPRODUCT(F190:F213,H190:H213)","v":1737685.0302355029},{"$f":"'Total RAB'!Q$110","v":10825465.371683381}]
[null,null,null,"Check",{"$f":"SUM(F215:I215)","v":3.7252902984619141E-9},{"$f":"ABS('DNSP Inputs General'!N$65-F214)","v":0},{"$f":"ABS(G214-SUM(G190:G213))*IF(F214=0,0,1)","v":0},{"$f":"ABS(H214-G214)*IF(F214=0,0,1)","v":0},{"$f":"ABS(I214-SUMPRODUCT(F190:F213,I190:I213))*IF(F214=0,0,1)","v":3.7252902984619141E-9}]
[]
[]
[{"$f":"'DNSP Inputs General'!B$67","v":"Reference Light"},{"$f":"'DNSP Inputs General'!D$67","v":"Price Factor"},{"$f":"'DNSP Inputs General'!A$67","v":"Energy Efficient Lights"},{"$f":"D$68","v":"Unit cost"},null,{"$f":"F$68","v":"Volumes"},{"$f":"G$68","v":"Unitisation - Luminaires & Ballasts"}]
[{"$f":"'DNSP Inputs General'!B$68","v":"T5 2X14W"},{"$f":"'DNSP Inputs General'!D$68","v":1},{"$f":"'DNSP Inputs General'!A$68","v":"T5 2X14W"},{"$f":"'DNSP Inputs O & M'!$G$154","v":301.41588746083977},{"$f":"F219*D219","v":2965045.0927657126},{"$f":"'DNSP Inputs General'!N$68","v":9837.0564263999986},{"$f":"IF(E$226=0,0,E219/E$226*G$226)","v":22299.459143788321},{"$f":"IF(F219=0,0,G219/F219)","v":2.2668833213096762}]
[{"$f":"'DNSP Inputs General'!B$69","v":"T5 2X14W"},{"$f":"'DNSP Inputs General'!D$69","v":0.98378581126179521},{"$f":"'DNSP Inputs General'!A$69","v":"T5 2X24W"},{"$f":"B220*D219","v":296.52867337285619},{"$f":"F220*D220","v":404792.73813232029},{"$f":"'DNSP Inputs General'!N$69","v":1365.1048768000001},{"$f":"IF(E$226=0,0,E220/E$226*G$226)","v":3044.3581272027341},{"$f":"IF(F220=0,0,G220/F220)","v":2.2301276472904723}]
[{"$f":"'DNSP Inputs General'!B$70","v":"T5 2X14W"},{"$f":"'DNSP Inputs General'!D$70","v":0.96128564523509352},{"$f":"'DNSP Inputs General'!A$70","v":"CF32"},{"$f":"B221*D219","v":289.74676586190168},825545.10790714447,{"$f":"'DNSP Inputs General'!N$70","v":2849.1952462399995},6208.745172222013,2.1791223961978439]
[{"$f":"'DNSP Inputs General'!B$71","v":"T5 2X14W"},{"$f":"'DNSP Inputs General'!D$71","v":0.96128564523509352},{"$f":"'DNSP Inputs General'!A$71","v":"CF42"},{"$f":"B222*D219","v":289.74676586190168},1206648.1586923788,{"$f":"'DNSP Inputs General'!N$71","v":4164.4922424000006},9074.9383142060196,2.1791223961978434]
[{"$f":"'DNSP Inputs General'!B$72","v":"Category P LED 18 Watt"},{"$f":"'DNSP Inputs General'!D$72","v":1},{"$f":"'DNSP Inputs General'!A$72","v":"Category P LED 18 Watt"},{"$f":"'DNSP Inputs O & M'!$G$191","v":352.72875158740868},21774321.529020749,{"$f":"'DNSP Inputs General'!N$72","v":61731.065106057613},163759.93555875256,2.6527962100994587]
[{"$f":"'DNSP Inputs General'!B$73","v":"Category P LED 18 Watt"},{"$f":"'DNSP Inputs General'!D$73","v":1},{"$f":"'DNSP Inputs General'!A$73","v":"Category P LED 47 Watt"},{"$f":"B224*D223","v":352.72875158740868},0,{"$f":"'DNSP Inputs General'!N$73","v":0},0,0]
[]
[null,null,null,null,{"$f":"SUM(E219:E225)","v":27176352.626518305},{"$f":"SUM(F219:F225)","v":79946.913897897612},{"$f":"'Total RAB'!Q$131","v":204387.43631617166},{"$f":"SUMPRODUCT(F219:F225,H219:H225)","v":204387.43631617166}]
[null,null,null,"Check",{"$f":"SUM(F227:I227)","v":0},{"$f":"ABS('DNSP Inputs General'!N$75-F226)","v":0},{"$f":"ABS(G226-SUM(G219:G225))","v":0},{"$f":"ABS(H226-G226)","v":0}]
[]
[]
[null,null,{"$f":"'RAB 2001 to 2004'!A$27","v":"Poles & Brackets"},{"$f":"D$80","v":"Weighted Average Volumes"},null,null,{"$f":"G$80","v":"Unitisation Poles & Brackets"}]
[null,null,"Total Poles & Brackets",{"$f":"'DNSP Inputs General'!$D$41*F190","v":39604.2664086},{"$f":"SUMPRODUCT('DNSP Inputs General'!$D41:$D62,'DNSP Inputs General'!N41:N62)+SUMPRODUCT('DNSP Inputs General'!$D68:$D73,'DNSP Inputs General'!N68:N73)","v":171487.6144750294},{"$f":"IF(E231=0,0,D231/E231*G231)","v":411864.10651817836},{"$f":"'Total RAB'!Q$101","v":1783383.4462681706},{"$f":"F231/F190","v":10.399488334639189}]
[]
[]
[]
[]
["DEPRECIATION AND RETURN",null,null,"Year",{"$f":"E186+1","v":2020}]
[]
[]
[{"$f":"'DNSP Inputs General'!B$40","v":"Reference Light"},{"$f":"'DNSP Inputs General'!D$40","v":"Price Factor"},{"$f":"'DNSP Inputs General'!A$40","v":"Existing Lights"},{"$f":"D$39","v":"WACC and Dep"},null,{"$f":"F$39","v":"Volumes"},{"$f":"G$39","v":"Unitisation - Luminaires"},null,{"$f":"I$39","v":"RAB WDV"}]
[{"$f":"'DNSP Inputs General'!B$41","v":"Mercury vapour 80 watt"},{"$f":"'DNSP Inputs General'!D$41","v":1},{"$f":"'DNSP Inputs General'!A$41","v":"Mercury vapour 80 watt"},{"$f":"'RAB 2001 to 2004'!G$15","v":2.6545753245915882},{"$f":"F240*D240","v":94619.257521138963},{"$f":"IF('DNSP Inputs General'!O$41=0,1/10^6,'DNSP Inputs General'!O$41)","v":35643.839767739999},{"$f":"IF(E$264=0,0,E240/E$264*G$264)","v":722511.94543725206},{"$f":"IF(F240=0,0,G240/F240)","v":20.27031739973123},{"$f":"IF(F240=0,0,E240/E$264*I$264/F240)","v":124.60333595570164}]
[{"$f":"'DNSP Inputs General'!B$42","v":"Sodium high pressure 150 watt"},{"$f":"'DNSP Inputs General'!D$42","v":1},{"$f":"'DNSP Inputs General'!A$42","v":"Sodium high pressure 150 watt"},{"$f":"'RAB 2001 to 2004'!G$20","v":2.7061957611796936},95127.030144166376,{"$f":"IF('DNSP Inputs General'!O$42=0,1/10^6,'DNSP Inputs General'!O$42)","v":35151.570152004926},726389.29340335028,20.664490668901728,127.02635200003157]
[{"$f":"'DNSP Inputs General'!B$43","v":"Sodium high pressure 250 watt"},{"$f":"'DNSP Inputs General'!D$43","v":1},{"$f":"'DNSP Inputs General'!A$43","v":"Sodium high pressure 250 watt"},{"$f":"'RAB 2001 to 2004'!G$25","v":2.9550867494287574},45797.50082282965,{"$f":"IF('DNSP Inputs General'!O$43=0,1/10^6,'DNSP Inputs General'!O$43)","v":15497.853263252824},349709.37505268742,22.565020400721448,138.70906717403628]
[{"$f":"'DNSP Inputs General'!B$44","v":"Mercury vapour 80 watt"},{"$f":"'DNSP Inputs General'!D$44","v":2.12},{"$f":"'DNSP Inputs General'!A$44","v":"Fluorescent 20 watt"},{"$f":"B243*IF(A243=C240,D240,IF(A243=C241,D241,D242))","v":5.6276996881341672},0,{"$f":"'DNSP Inputs General'!O$44","v":0},0,0,0]
[{"$f":"'DNSP Inputs General'!B$45","v":"Mercury vapour 80 watt"},{"$f":"'DNSP Inputs General'!D$45","v":2.12},{"$f":"'DNSP Inputs General'!A$45","v":"Fluorescent 40 watt"},{"$f":"B244*IF(A244=C240,D240,IF(A244=C241,D241,D242))","v":5.6276996881341672},0,{"$f":"'DNSP Inputs General'!O$45","v":0},0,0,0]
[{"$f":"'DNSP Inputs General'!B$46","v":"Mercury vapour 80 watt"},{"$f":"'DNSP Inputs General'!D$46","v":1.39},{"$f":"'DNSP Inputs General'!A$46","v":"Mercury vapour 50 watt"},{"$f":"B245*IF(A245=C240,D240,IF(A245=C241,D241,D242))","v":3.6898597011823071},580.63793947360421,{"$f":"'DNSP Inputs General'!O$46","v":157.36043819973855},4433.746979572592,28.175741185626404,173.19863697842527]
[{"$f":"'DNSP Inputs General'!B$47","v":"Mercury vapour 80 watt"},{"$f":"'DNSP Inputs General'!D$47","v":1.35},{"$f":"'DNSP Inputs General'!A$47","v":"Mercury vapour 125 watt"},{"$f":"B246*IF(A246=C240,D240,IF(A246=C241,D241,D242))","v":3.5836766881986444},4423.037860852698,{"$f":"'DNSP Inputs General'!O$47","v":1234.2178845034045},33774.284150066924,27.364928489637162,168.21450354019726]
[{"$f":"'DNSP Inputs General'!B$48","v":"Sodium high pressure 250 watt"},{"$f":"'DNSP Inputs General'!D$48","v":0.76},{"$f":"'DNSP Inputs General'!A$48","v":"Mercury vapour 250 watt"},{"$f":"B247*IF(A247=C240,D240,IF(A247=C241,D241,D242))","v":2.2458659295658556},168.90605159886127,{"$f":"'DNSP Inputs General'!O$48","v":75.207539940512916},1289.7653515147679,17.149415504548301,105.4188910522676]
[{"$f":"'DNSP Inputs General'!B$49","v":"Sodium high pressure 250 watt"},{"$f":"'DNSP Inputs General'!D$49","v":0.88},{"$f":"'DNSP Inputs General'!A$49","v":"Mercury vapour 400 watt"},{"$f":"B248*IF(A248=C240,D240,IF(A248=C241,D241,D242))","v":2.6004763394973067},135.46778842084197,{"$f":"'DNSP Inputs General'!O$49","v":52.093451635491135},1034.4310230309911,19.857217952634873,122.06397911315196]
[{"$f":"'DNSP Inputs General'!B$50","v":"Sodium high pressure 250 watt"},{"$f":"'DNSP Inputs General'!D$50","v":1.33},{"$f":"'DNSP Inputs General'!A$50","v":"Mercury vapour 700 watt"},{"$f":"B249*IF(A249=C240,D240,IF(A249=C241,D241,D242))","v":3.9302653767402473},0,{"$f":"'DNSP Inputs General'!O$50","v":0},0,0,0]
[{"$f":"'DNSP Inputs General'!B$51","v":"Sodium high pressure 150 watt"},{"$f":"'DNSP Inputs General'!D$51","v":1.35},{"$f":"'DNSP Inputs General'!A$51","v":"Sodium low pressure 90 watt"},{"$f":"B250*IF(A250=C240,D240,IF(A250=C241,D241,D242))","v":3.6533642775925865},0,{"$f":"'DNSP Inputs General'!O$51","v":0},0,0,0]
[{"$f":"'DNSP Inputs General'!B$52","v":"Sodium high pressure 150 watt"},{"$f":"'DNSP Inputs General'!D$52","v":1.35},{"$f":"'DNSP Inputs General'!A$52","v":"Sodium low pressure 180 watt"},{"$f":"B251*IF(A251=C240,D240,IF(A251=C241,D241,D242))","v":3.6533642775925865},0,{"$f":"'DNSP Inputs General'!O$52","v":0},0,0,0]
[{"$f":"'DNSP Inputs General'!B$53","v":"Sodium high pressure 250 watt"},{"$f":"'DNSP Inputs General'!D$53","v":1.33},{"$f":"'DNSP Inputs General'!A$53","v":"Sodium high pressure 400 watt"},{"$f":"B252*IF(A252=C240,D240,IF(A252=C241,D241,D242))","v":3.9302653767402473},3038.7184125923686,{"$f":"'DNSP Inputs General'!O$53","v":773.15858378822099},23203.631157511565,30.011477132959524,184.48305934146828]
[{"$f":"'DNSP Inputs General'!B$54","v":"Mercury vapour 80 watt"},{"$f":"'DNSP Inputs General'!D$54","v":2.78},{"$f":"'DNSP Inputs General'!A$54","v":"Incandescent 100 watt"},{"$f":"B253*IF(A253=C240,D240,IF(A253=C241,D241,D242))","v":7.3797194023646142},0,{"$f":"'DNSP Inputs General'!O$54","v":0},0,0,0]
[{"$f":"'DNSP Inputs General'!B$55","v":"Mercury vapour 80 watt"},{"$f":"'DNSP Inputs General'!D$55","v":2.78},{"$f":"'DNSP Inputs General'!A$55","v":"Incandescent 150 watt"},{"$f":"B254*IF(A254=C240,D240,IF(A254=C241,D241,D242))","v":7.3797194023646142},0,{"$f":"'DNSP Inputs General'!O$55","v":0},0,0,0]
[{"$f":"'DNSP Inputs General'!B$56","v":"Sodium high pressure 250 watt"},{"$f":"'DNSP Inputs General'!D$56","v":1.33},{"$f":"'DNSP Inputs General'!A$56","v":"Metal halide 250 watt"},{"$f":"B255*IF(A255=C240,D240,IF(A255=C241,D241,D242))","v":3.9302653767402473},1544.8016772028261,{"$f":"'DNSP Inputs General'!O$56","v":393.05276593920001},11796.094097030791,30.01147713295952,184.48305934146825]
[{"$f":"'DNSP Inputs General'!B$57","v":"Sodium high pressure 250 watt"},{"$f":"'DNSP Inputs General'!D$57","v":1.33},{"$f":"'DNSP Inputs General'!A$57","v":"Metal halide 400 watt"},{"$f":"B256*IF(A256=C240,D240,IF(A256=C241,D241,D242))","v":3.9302653767402473},0,{"$f":"'DNSP Inputs General'!O$57","v":0},0,0,0]
[{"$f":"'DNSP Inputs General'!B$58","v":"Mercury vapour 80 watt"},{"$f":"'DNSP Inputs General'!D$58","v":2.12},{"$f":"'DNSP Inputs General'!A$58","v":"Metal halide 70 watt"},{"$f":"B257*IF(A257=C240,D240,IF(A257=C241,D241,D242))","v":5.6276996881341672},{"$f":"F257*D257","v":49.707481534748489},{"$f":"'DNSP Inputs General'!O$58","v":8.8326464256000001},{"$f":"IF(E$264=0,0,E257/E$264*G$264)","v":379.56595863620873},{"$f":"IF(F257=0,0,G257/F257)","v":42.973072887430213},{"$f":"IF(F257=0,0,E257/E$264*I$264/F257)","v":264.15907222608752}]
[{"$f":"'DNSP Inputs General'!B$59","v":"Sodium high pressure 150 watt"},{"$f":"'DNSP Inputs General'!D$59","v":1.33},{"$f":"'DNSP Inputs General'!A$59","v":"Metal halide 150 watt"},{"$f":"B258*IF(A258=C240,D240,IF(A258=C241,D241,D242))","v":3.5992403623689926},198.69260950971085,{"$f":"'DNSP Inputs General'!O$59","v":55.204040160000005},1517.2152857867552,27.483772589639297,168.94504816004198]
[]
[]
[]
[]
[]
[null,null,null,null,{"$f":"SUM(E240:E263)","v":245683.75830932066},{"$f":"SUM(F240:F263)","v":89042.390533589903},{"$f":"'Total RAB'!R$116","v":1876039.3478964404},{"$f":"SUMPRODUCT(F240:F263,H240:H263)","v":1876039.3478964404},{"$f":"'Total RAB'!R$110","v":11532170.736268546}]
[null,null,null,"Check",{"$f":"SUM(F265:I265)","v":0},{"$f":"ABS('DNSP Inputs General'!O$65-F264)","v":0},{"$f":"ABS(G264-SUM(G240:G263))*IF(F264=0,0,1)","v":0},{"$f":"ABS(H264-G264)*IF(F264=0,0,1)","v":0},{"$f":"ABS(I264-SUMPRODUCT(F240:F263,I240:I263))*IF(F264=0,0,1)","v":0}]
[]
[]
[{"$f":"'DNSP Inputs General'!B$67","v":"Reference Light"},{"$f":"'DNSP Inputs General'!D$67","v":"Price Factor"},{"$f":"'DNSP Inputs General'!A$67","v":"Energy Efficient Lights"},{"$f":"D$68","v":"Unit cost"},null,{"$f":"F$68","v":"Volumes"},{"$f":"G$68","v":"Unitisation - Luminaires & Ballasts"}]
[{"$f":"'DNSP Inputs General'!B$68","v":"T5 2X14W"},{"$f":"'DNSP Inputs General'!D$68","v":1},{"$f":"'DNSP Inputs General'!A$68","v":"T5 2X14W"},{"$f":"'DNSP Inputs O & M'!$H$154","v":301.41588746083977},{"$f":"F269*D269","v":2905744.1909103985},{"$f":"'DNSP Inputs General'!O$68","v":9640.3152978719991},{"$f":"IF(E$276=0,0,E269/E$276*G$276)","v":20948.921248655224},{"$f":"IF(F269=0,0,G269/F269)","v":2.1730535362551353}]
[{"$f":"'DNSP Inputs General'!B$69","v":"T5 2X14W"},{"$f":"'DNSP Inputs General'!D$69","v":0.98378581126179521},{"$f":"'DNSP Inputs General'!A$69","v":"T5 2X24W"},{"$f":"B270*D269","v":296.52867337285619},{"$f":"F270*D270","v":396696.88336967392},{"$f":"'DNSP Inputs General'!O$69","v":1337.802779264},{"$f":"IF(E$276=0,0,E270/E$276*G$276)","v":2859.9805155919598},{"$f":"IF(F270=0,0,G270/F270)","v":2.1378192360800705}]
[{"$f":"'DNSP Inputs General'!B$70","v":"T5 2X14W"},{"$f":"'DNSP Inputs General'!D$70","v":0.96128564523509352},{"$f":"'DNSP Inputs General'!A$70","v":"CF32"},{"$f":"B271*D269","v":289.74676586190168},809034.20574900159,{"$f":"'DNSP Inputs General'!O$70","v":2792.2113413151997},5832.720552869474,2.0889251707294192]
[{"$f":"'DNSP Inputs General'!B$71","v":"T5 2X14W"},{"$f":"'DNSP Inputs General'!D$71","v":0.96128564523509352},{"$f":"'DNSP Inputs General'!A$71","v":"CF42"},{"$f":"B272*D269","v":289.74676586190168},1182515.1955185314,{"$f":"'DNSP Inputs General'!O$71","v":4081.2023975520005},8525.3264150876275,2.0889251707294192]
[{"$f":"'DNSP Inputs General'!B$72","v":"Category P LED 18 Watt"},{"$f":"'DNSP Inputs General'!D$72","v":1},{"$f":"'DNSP Inputs General'!A$72","v":"Category P LED 18 Watt"},{"$f":"'DNSP Inputs O & M'!$H$191","v":352.72875158740868},23516267.251342408,{"$f":"'DNSP Inputs General'!O$72","v":66669.550314542226},169540.19292260989,2.5429928973981561]
[{"$f":"'DNSP Inputs General'!B$73","v":"Category P LED 18 Watt"},{"$f":"'DNSP Inputs General'!D$73","v":1},{"$f":"'DNSP Inputs General'!A$73","v":"Category P LED 47 Watt"},{"$f":"B274*D273","v":352.72875158740868},0,{"$f":"'DNSP Inputs General'!O$73","v":0},0,0]
[]
[null,null,null,null,{"$f":"SUM(E269:E275)","v":28810257.726890013},{"$f":"SUM(F269:F275)","v":84521.08213054543},{"$f":"'Total RAB'!R$131","v":207707.14165481416},{"$f":"SUMPRODUCT(F269:F275,H269:H275)","v":207707.14165481419}]
[null,null,null,"Check",{"$f":"SUM(F277:I277)","v":5.8207660913467407E-11},{"$f":"ABS('DNSP Inputs General'!O$75-F276)","v":0},{"$f":"ABS(G276-SUM(G269:G275))","v":2.9103830456733704E-11},{"$f":"ABS(H276-G276)","v":2.9103830456733704E-11}]
[]
[]
[null,null,{"$f":"'RAB 2001 to 2004'!A$27","v":"Poles & Brackets"},{"$f":"D$80","v":"Weighted Average Volumes"},null,null,{"$f":"G$80","v":"Unitisation Poles & Brackets"}]
[null,null,"Total Poles & Brackets",{"$f":"'DNSP Inputs General'!$D$41*F240","v":35643.839767739999},{"$f":"SUMPRODUCT('DNSP Inputs General'!$D41:$D62,'DNSP Inputs General'!O41:O62)+SUMPRODUCT('DNSP Inputs General'!$D68:$D73,'DNSP Inputs General'!O68:O73)","v":174157.68694879703},{"$f":"IF(E281=0,0,D281/E281*G281)","v":372962.19715972873},{"$f":"'Total RAB'!R$101","v":1822313.027999508},{"$f":"F281/F240","v":10.463580792361318}]

{"sheet":"Total RAB","index":12,"n_rows":144,"n_cols":18,"rows_kept":144,"cut":false,"hidden":false,"merged":[]}
[{"$f":"'DNSP Inputs O & M'!$A$3","v":"Powercor"},null,null,null,"Check",{"$f":"SUM(B144)","v":7.0780515670776367E-8}]
[]
["Total Public Lighting RAB"]
["Historical cost ($)"]
[]
[null,"Life (years)",2005,2006,2007,2008,2009,2010,2011,2012,2013,2014,2015,2016,2017,2018,2019,2020]
[]
["Capital Expenditure (Nominal $)"]
["(Net of customer contributions)"]
[]
["Poles and Brackets",{"$f":"'DNSP Inputs O & M'!$C$127","v":35},591600,171600,70000,182400,{"$f":"'DNSP Inputs General'!D6","v":243213.85000000003},{"$f":"'DNSP Inputs General'!E6","v":1063986.6485714279},{"$f":"'DNSP Inputs General'!F6","v":735187.59600000049},{"$f":"'DNSP Inputs General'!G6","v":1695675.3889145812},{"$f":"'DNSP Inputs General'!H6","v":2267621.4713558382},{"$f":"'DNSP Inputs General'!I6","v":3028236.0919746589},{"$f":"'DNSP Inputs General'!J6*M$20","v":4439699.1610149844},{"$f":"'DNSP Inputs General'!K6*N$20","v":795066.17907735787},{"$f":"'DNSP Inputs General'!L6*O$20","v":804466.0758046743},{"$f":"'DNSP Inputs General'!M6*P$20","v":821859.6642906958},{"$f":"'DNSP Inputs General'!N6*Q$20","v":843126.09469487052},{"$f":"'DNSP Inputs General'!O6*R$20","v":865075.6045695116}]
[]
["Existing Lights"]
["Luminaires",{"$f":"'DNSP Inputs O & M'!$C$24","v":20},2366400,686400,280000,729600,{"$f":"'DNSP Inputs General'!D9","v":699288.46152000013},{"$f":"'DNSP Inputs General'!E9","v":540539.04581485712},{"$f":"'DNSP Inputs General'!F9","v":437172.59589120012},{"$f":"'DNSP Inputs General'!G9","v":389009.32072819944},{"$f":"'DNSP Inputs General'!H9","v":487489.20783708326},{"$f":"'DNSP Inputs General'!I9","v":811892.12291404186},{"$f":"'DNSP Inputs General'!J9*M$20","v":1346500.5544174933},{"$f":"'DNSP Inputs General'!K9*N$20","v":1357858.1011450733},{"$f":"'DNSP Inputs General'!L9*O$20","v":1200808.6676843211},{"$f":"'DNSP Inputs General'!M9*P$20","v":1704278.3833205663},{"$f":"'DNSP Inputs General'!N9*Q$20","v":1760837.2919945116},{"$f":"'DNSP Inputs General'!O9*R$20","v":1825809.6157438308}]
[]
["Energy Efficient Lights"]
["Luminaires and Ballasts",{"$f":"'DNSP Inputs O & M'!$C$147","v":20},null,null,null,null,{"$f":"'DNSP Inputs General'!D12","v":273566.93848000001},{"$f":"'DNSP Inputs General'!E12","v":211462.96561371427},{"$f":"'DNSP Inputs General'!F12","v":171025.22810880005},{"$f":"'DNSP Inputs General'!G12","v":152183.39035721993},{"$f":"'DNSP Inputs General'!H12","v":190709.46750666085},{"$f":"'DNSP Inputs General'!I12","v":317618.34302090784},{"$f":"'DNSP Inputs General'!J12*M$20","v":526761.20743210788},{"$f":"'DNSP Inputs General'!K12*N$20","v":54769.723339097909},{"$f":"'DNSP Inputs General'!L12*O$20","v":71326.310572209593},{"$f":"'DNSP Inputs General'!M12*P$20","v":78314.700391859194},{"$f":"'DNSP Inputs General'!N12*Q$20","v":85803.497734836928},{"$f":"'DNSP Inputs General'!O12*R$20","v":93438.704993298365}]
[]
[]
["CPI Index",null,null,null,null,null,null,null,null,null,null,null,1,{"$f":"M20*(1+WACC!E$6)","v":1.0232307982099371},{"$f":"N20*(1+WACC!F$6)","v":1.0337010668427828},{"$f":"O20*(1+WACC!G$6)","v":1.0536897615054885},{"$f":"P20*(1+WACC!H$6)","v":1.0781678157308994},{"$f":"Q20*(1+WACC!I$6)","v":1.1032145146945926}]
[]
[]
["Depreciation",null,{"$f":"$C$6","v":2005},{"$f":"$D$6","v":2006},{"$f":"$E$6","v":2007},{"$f":"$F$6","v":2008},{"$f":"G$6","v":2009},{"$f":"H$6","v":2010},2011,2012,2013,2014,2015,2016,2017,2018,2019,2020]
[{"$f":"$A$11","v":"Poles and Brackets"}]
["RAB 2001-04",null,{"$f":"'RAB 2001 to 2004'!F113","v":132156.40665948085},{"$f":"'RAB 2001 to 2004'!G113","v":132156.40665948085},{"$f":"'RAB 2001 to 2004'!H113","v":132156.40665948085},{"$f":"'RAB 2001 to 2004'!I113","v":132156.40665948085},{"$f":"'RAB 2001 to 2004'!J113","v":132156.40665948085},{"$f":"'RAB 2001 to 2004'!K113","v":132156.40665948085},{"$f":"'RAB 2001 to 2004'!L113","v":132156.40665948085},{"$f":"'RAB 2001 to 2004'!M113","v":132156.40665948085},{"$f":"'RAB 2001 to 2004'!N113","v":132156.40665948085},{"$f":"'RAB 2001 to 2004'!O113","v":132156.40665948085},{"$f":"'RAB 2001 to 2004'!P113","v":132156.40665948085},{"$f":"'RAB 2001 to 2004'!Q113","v":132156.40665948085},{"$f":"'RAB 2001 to 2004'!R113","v":132156.40665948085},{"$f":"'RAB 2001 to 2004'!S113","v":132156.40665948085},{"$f":"'RAB 2001 to 2004'!T113","v":132156.40665948085},{"$f":"'RAB 2001 to 2004'!U113","v":132156.40665948085}]
["Depn Capex 2005",null,{"$f":"C$11/$B$11/2","v":8451.4285714285706},{"$f":"C26*2","v":16902.857142857141},{"$f":"D26","v":16902.857142857141},16902.857142857141,16902.857142857141,16902.857142857141,16902.857142857141,16902.857142857141,16902.857142857141,16902.857142857141,16902.857142857141,{"$f":"M26","v":16902.857142857141},{"$f":"N26","v":16902.857142857141},{"$f":"O26","v":16902.857142857141},{"$f":"P26","v":16902.857142857141},{"$f":"Q26","v":16902.857142857141}]
["Depn Capex 2006",null,null,{"$f":"D$11/$B$11/2","v":2451.4285714285716},{"$f":"D27*2","v":4902.8571428571431},{"$f":"E27","v":4902.8571428571431},4902.8571428571431,4902.8571428571431,4902.8571428571431,4902.8571428571431,4902.8571428571431,4902.8571428571431,4902.8571428571431,4902.8571428571431,4902.8571428571431,4902.8571428571431,4902.8571428571431,4902.8571428571431]
["Depn Capex 2007",null,null,null,{"$f":"E$11/$B$11/2","v":1000},{"$f":"E28*2","v":2000},{"$f":"F28","v":2000},2000,2000,2000,2000,2000,2000,2000,2000,2000,2000,2000]
["Depn Capex 2008",null,null,null,null,{"$f":"F$11/$B$11/2","v":2605.7142857142858},{"$f":"F29*2","v":5211.4285714285716},{"$f":"G29","v":5211.4285714285716},5211.4285714285716,5211.4285714285716,5211.4285714285716,5211.4285714285716,5211.4285714285716,5211.4285714285716,5211.4285714285716,5211.4285714285716,5211.4285714285716,5211.4285714285716]
["Depn Capex 2009",null,null,null,null,null,{"$f":"G$11/$B$11/2","v":3474.4835714285718},{"$f":"G30*2","v":6948.9671428571437},{"$f":"H30","v":6948.9671428571437},{"$f":"I30","v":6948.9671428571437},{"$f":"J30","v":6948.9671428571437},{"$f":"K30","v":6948.9671428571437},{"$f":"L30","v":6948.9671428571437},6948.9671428571437,6948.9671428571437,6948.9671428571437,6948.9671428571437,6948.9671428571437]
["Depn Capex 2010",null,null,null,null,null,null,{"$f":"H$11/$B$11/2","v":15199.809265306112},{"$f":"H31*2","v":30399.618530612224},{"$f":"I31","v":30399.618530612224},{"$f":"J31","v":30399.618530612224},{"$f":"K31","v":30399.618530612224},{"$f":"L31","v":30399.618530612224},30399.618530612224,30399.618530612224,30399.618530612224,30399.618530612224,30399.618530612224]
["Depn Capex 2011",null,null,null,null,null,null,null,{"$f":"I$11/$B$11/2","v":10502.67994285715},{"$f":"I32*2","v":21005.359885714301},{"$f":"J32","v":21005.359885714301},{"$f":"K32","v":21005.359885714301},{"$f":"L32","v":21005.359885714301},21005.359885714301,21005.359885714301,21005.359885714301,21005.359885714301,21005.359885714301]
["Depn Capex 2012",null,null,null,null,null,null,null,null,{"$f":"J$11/$B$11/2","v":24223.93412735116},{"$f":"J33*2","v":48447.86825470232},{"$f":"K33","v":48447.86825470232},{"$f":"L33","v":48447.86825470232},48447.86825470232,48447.86825470232,48447.86825470232,48447.86825470232,48447.86825470232]
["Depn Capex 2013",null,null,null,null,null,null,null,null,null,{"$f":"K$11/$B$11/2","v":32394.592447940548},{"$f":"K34*2","v":64789.184895881095},{"$f":"L34","v":64789.184895881095},64789.184895881095,64789.184895881095,64789.184895881095,64789.184895881095,64789.184895881095]
["Depn Capex 2014",null,null,null,null,null,null,null,null,null,null,{"$f":"L$11/$B$11/2","v":43260.515599637984},{"$f":"L35*2","v":86521.031199275967},{"$f":"M35","v":86521.031199275967},{"$f":"N35","v":86521.031199275967},{"$f":"O35","v":86521.031199275967},{"$f":"P35","v":86521.031199275967},{"$f":"Q35","v":86521.031199275967}]
["Depn Capex 2015",null,null,null,null,null,null,null,null,null,null,null,{"$f":"M$11/$B$11/2","v":63424.273728785491},{"$f":"M36*2","v":126848.54745757098},126848.54745757098,126848.54745757098,126848.54745757098,126848.54745757098]
["Depn Capex 2016",null,null,null,null,null,null,null,null,null,null,null,null,{"$f":"N$11/$B$11/2","v":11358.088272533683},{"$f":"N37*2","v":22716.176545067367},{"$f":"O37","v":22716.176545067367},22716.176545067367,22716.176545067367]
["Depn Capex 2017",null,null,null,null,null,null,null,null,null,null,null,null,null,{"$f":"O$11/$B$11/2","v":11492.372511495347},{"$f":"O38*2","v":22984.745022990694},22984.745022990694,22984.745022990694]
["Depn Capex 2018",null,null,null,null,null,null,null,null,null,null,null,null,null,null,{"$f":"P$11/$B$11/2","v":11740.852347009941},{"$f":"P39*2","v":23481.704694019882},23481.704694019882]
["Depn Capex 2019",null,null,null,null,null,null,null,null,null,null,null,null,null,null,null,{"$f":"Q$11/$B$11/2","v":12044.658495641008},{"$f":"Q40*2","v":24089.316991282016}]
["Depn Capex 2020",null,null,null,null,null,null,null,null,null,null,null,null,null,null,null,null,{"$f":"R$11/$B$11/2","v":12358.222922421593}]
["Total Depreciation",null,{"$f":"SUM(C25:C41)","v":140607.83523090943},{"$f":"SUM(D25:D41)","v":151510.69237376656},154962.12094519511,158567.8352309094,164648.03308805227,183322.32592478694,209024.81513295023,243751.42920315854,300369.95577845024,376025.06382602878,482709.85315445228,557492.21515577147,580342.67593980045,603575.90079830575,627361.41164095665,651764.29305901937]
[]
[{"$f":"$A$13","v":"Existing Lights"}]
[{"$f":"$A$14","v":"Luminaires"}]
[{"$f":"A25","v":"RAB 2001-04"},null,{"$f":"'RAB 2001 to 2004'!F77","v":333555.32310170203},{"$f":"'RAB 2001 to 2004'!G77","v":333555.32310170203},{"$f":"'RAB 2001 to 2004'!H77","v":333555.32310170203},{"$f":"'RAB 2001 to 2004'!I77","v":333555.32310170203},{"$f":"'RAB 2001 to 2004'!J77","v":333555.32310170203},{"$f":"'RAB 2001 to 2004'!K77","v":333555.32310170203},{"$f":"'RAB 2001 to 2004'!L77","v":333555.32310170203},{"$f":"'RAB 2001 to 2004'!M77","v":333555.32310170203},{"$f":"'RAB 2001 to 2004'!N77","v":333555.32310170203},{"$f":"'RAB 2001 to 2004'!O77","v":333555.32310170203},{"$f":"'RAB 2001 to 2004'!P77","v":333555.32310170203},{"$f":"'RAB 2001 to 2004'!Q77","v":333555.32310170203},{"$f":"'RAB 2001 to 2004'!R77","v":333555.32310170203},{"$f":"'RAB 2001 to 2004'!S77","v":333555.32310170203},{"$f":"'RAB 2001 to 2004'!T77","v":333555.32310170203},{"$f":"'RAB 2001 to 2004'!U77","v":333555.32310170203}]
[{"$f":"A26","v":"Depn Capex 2005"},null,{"$f":"C$14/$B$14/2","v":59160},{"$f":"C47*2","v":118320},{"$f":"D47","v":118320},118320,118320,118320,118320,118320,118320,118320,118320,{"$f":"M47","v":118320},{"$f":"N47","v":118320},{"$f":"O47","v":118320},{"$f":"P47","v":118320},{"$f":"Q47","v":118320}]
[{"$f":"A27","v":"Depn Capex 2006"},null,null,{"$f":"D$14/$B$14/2","v":17160},{"$f":"D48*2","v":34320},{"$f":"E48","v":34320},34320,34320,34320,34320,34320,34320,34320,34320,34320,34320,34320,34320]
["Depn Capex 2007",null,null,null,{"$f":"E$14/$B$14/2","v":7000},{"$f":"E49*2","v":14000},{"$f":"F49","v":14000},14000,14000,14000,14000,14000,14000,14000,14000,14000,14000,14000]
["Depn Capex 2008",null,null,null,null,{"$f":"F$14/$B$14/2","v":18240},{"$f":"F50*2","v":36480},{"$f":"G50","v":36480},36480,36480,36480,36480,36480,36480,36480,36480,36480,36480]
["Depn Capex 2009",null,null,null,null,null,{"$f":"G$14/$B$14/2","v":17482.211538000003},{"$f":"G51*2","v":34964.423076000006},{"$f":"H51","v":34964.423076000006},{"$f":"I51","v":34964.423076000006},{"$f":"J51","v":34964.423076000006},{"$f":"K51","v":34964.423076000006},{"$f":"L51","v":34964.423076000006},34964.423076000006,34964.423076000006,34964.423076000006,34964.423076000006,34964.423076000006]
["Depn Capex 2010",null,null,null,null,null,null,{"$f":"H$14/$B$14/2","v":13513.476145371427},{"$f":"H52*2","v":27026.952290742855},{"$f":"I52","v":27026.952290742855},{"$f":"J52","v":27026.952290742855},{"$f":"K52","v":27026.952290742855},{"$f":"L52","v":27026.952290742855},27026.952290742855,27026.952290742855,27026.952290742855,27026.952290742855,27026.952290742855]
["Depn Capex 2011",null,null,null,null,null,null,null,{"$f":"I$14/$B$14/2","v":10929.314897280003},{"$f":"I53*2","v":21858.629794560005},{"$f":"J53","v":21858.629794560005},{"$f":"K53","v":21858.629794560005},{"$f":"L53","v":21858.629794560005},21858.629794560005,21858.629794560005,21858.629794560005,21858.629794560005,21858.629794560005]
["Depn Capex 2012",null,null,null,null,null,null,null,null,{"$f":"J$14/$B$14/2","v":9725.2330182049864},{"$f":"J54*2","v":19450.466036409973},{"$f":"K54","v":19450.466036409973},{"$f":"L54","v":19450.466036409973},19450.466036409973,19450.466036409973,19450.466036409973,19450.466036409973,19450.466036409973]
["Depn Capex 2013",null,null,null,null,null,null,null,null,null,{"$f":"K$14/$B$14/2","v":12187.230195927081},{"$f":"K55*2","v":24374.460391854162},{"$f":"L55","v":24374.460391854162},24374.460391854162,24374.460391854162,24374.460391854162,24374.460391854162,24374.460391854162]
["Depn Capex 2014",null,null,null,null,null,null,null,null,null,null,{"$f":"L$14/$B$14/2","v":20297.303072851046},{"$f":"L56*2","v":40594.606145702091},40594.606145702091,{"$f":"N56","v":40594.606145702091},{"$f":"O56","v":40594.606145702091},{"$f":"P56","v":40594.606145702091},{"$f":"Q56","v":40594.606145702091}]
["Depn Capex 2015",null,null,null,null,null,null,null,null,null,null,null,{"$f":"M$14/$B$14/2","v":33662.513860437335},{"$f":"M57*2","v":67325.02772087467},67325.02772087467,67325.02772087467,67325.02772087467,67325.02772087467]
["Depn Capex 2016",null,null,null,null,null,null,null,null,null,null,null,null,{"$f":"N$14/$B$14/2","v":33946.452528626833},{"$f":"N58*2","v":67892.905057253665},{"$f":"O58","v":67892.905057253665},67892.905057253665,67892.905057253665]
["Depn Capex 2017",null,null,null,null,null,null,null,null,null,null,null,null,null,{"$f":"O$14/$B$14/2","v":30020.216692108028},{"$f":"O59*2","v":60040.433384216056},60040.433384216056,60040.433384216056]
["Depn Capex 2018",null,null,null,null,null,null,null,null,null,null,null,null,null,null,{"$f":"P$14/$B$14/2","v":42606.959583014155},{"$f":"P60*2","v":85213.91916602831},85213.91916602831]
["Depn Capex 2019",null,null,null,null,null,null,null,null,null,null,null,null,null,null,null,{"$f":"Q$14/$B$14/2","v":44020.93229986279},{"$f":"Q61*2","v":88041.864599725581}]
["Depn Capex 2020",null,null,null,null,null,null,null,null,null,null,null,null,null,null,null,null,{"$f":"R$14/$B$14/2","v":45645.24039359577}]
["Total Depreciation",null,{"$f":"SUM(C46:C62)","v":392715.32310170203},469035.32310170203,493195.32310170203,518435.32310170203,554157.53463970206,585153.22232307342,609596.01336572482,630250.56128120993,652163.02449534193,684647.55776412005,738607.37469740841,806216.34108647262,870183.01030720747,942810.18658232957,1029438.0784652065,1119104.2511586649]
[]
[{"$f":"$A$16","v":"Energy Efficient Lights"}]
[{"$f":"$A$17","v":"Luminaires and Ballasts"}]
[{"$f":"A46","v":"RAB 2001-04"}]
[{"$f":"A47","v":"Depn Capex 2005"}]
[{"$f":"A48","v":"Depn Capex 2006"}]
["Depn Capex 2007"]
["Depn Capex 2008"]
["Depn Capex 2009",null,null,null,null,null,{"$f":"G$17/$B$17/2","v":6839.1734620000007},{"$f":"G72*2","v":13678.346924000001},{"$f":"H72","v":13678.346924000001},{"$f":"I72","v":13678.346924000001},{"$f":"J72","v":13678.346924000001},{"$f":"K72","v":13678.346924000001},{"$f":"L72","v":13678.346924000001},{"$f":"M72","v":13678.346924000001},13678.346924000001,13678.346924000001,13678.346924000001,13678.346924000001]
["Depn Capex 2010",null,null,null,null,null,null,{"$f":"H$17/$B$17/2","v":5286.5741403428565},{"$f":"H73*2","v":10573.148280685713},{"$f":"I73","v":10573.148280685713},{"$f":"J73","v":10573.148280685713},{"$f":"K73","v":10573.148280685713},{"$f":"L73","v":10573.148280685713},{"$f":"M73","v":10573.148280685713},10573.148280685713,10573.148280685713,10573.148280685713,10573.148280685713]
["Depn Capex 2011",null,null,null,null,null,null,null,{"$f":"I$17/$B$17/2","v":4275.630702720001},{"$f":"I74*2","v":8551.2614054400019},{"$f":"J74","v":8551.2614054400019},{"$f":"K74","v":8551.2614054400019},{"$f":"L74","v":8551.2614054400019},{"$f":"M74","v":8551.2614054400019},8551.2614054400019,8551.2614054400019,8551.2614054400019,8551.2614054400019]
["Depn Capex 2012",null,null,null,null,null,null,null,null,{"$f":"J$17/$B$17/2","v":3804.5847589304985},{"$f":"J75*2","v":7609.1695178609971},{"$f":"K75","v":7609.1695178609971},{"$f":"L75","v":7609.1695178609971},{"$f":"M75","v":7609.1695178609971},7609.1695178609971,7609.1695178609971,7609.1695178609971,7609.1695178609971]
["Depn Capex 2013",null,null,null,null,null,null,null,null,null,{"$f":"K$17/$B$17/2","v":4767.736687666521},{"$f":"K76*2","v":9535.473375333042},{"$f":"L76","v":9535.473375333042},{"$f":"M76","v":9535.473375333042},9535.473375333042,9535.473375333042,9535.473375333042,9535.473375333042]
["Depn Capex 2014",null,null,null,null,null,null,null,null,null,null,{"$f":"L$17/$B$17/2","v":7940.4585755226963},{"$f":"L77*2","v":15880.917151045393},15880.917151045393,{"$f":"N77","v":15880.917151045393},15880.917151045393,15880.917151045393,15880.917151045393]
["Depn Capex 2015",null,null,null,null,null,null,null,null,null,null,null,{"$f":"M$17/$B$17/2","v":13169.030185802698},{"$f":"M78*2","v":26338.060371605396},{"$f":"N78","v":26338.060371605396},26338.060371605396,26338.060371605396,26338.060371605396]
["Depn Capex 2016",null,null,null,null,null,null,null,null,null,null,null,null,{"$f":"N$17/$B$17/2","v":1369.2430834774477},{"$f":"N79*2","v":2738.4861669548955},{"$f":"O79","v":2738.4861669548955},2738.4861669548955,2738.4861669548955]
["Depn Capex 2017",null,null,null,null,null,null,null,null,null,null,null,null,null,{"$f":"O$17/$B$17/2","v":1783.1577643052399},{"$f":"O80*2","v":3566.3155286104798},3566.3155286104798,3566.3155286104798]
["Depn Capex 2018",null,null,null,null,null,null,null,null,null,null,null,null,null,null,{"$f":"P$17/$B$17/2","v":1957.8675097964799},{"$f":"P81*2","v":3915.7350195929598},3915.7350195929598]
["Depn Capex 2019",null,null,null,null,null,null,null,null,null,null,null,null,null,null,null,{"$f":"Q$17/$B$17/2","v":2145.0874433709232},{"$f":"Q82*2","v":4290.1748867418464}]
["Depn Capex 2020",null,null,null,null,null,null,null,null,null,null,null,null,null,null,null,null,{"$f":"R$17/$B$17/2","v":2335.967624832459}]
["Total Depreciation",null,{"$f":"SUM(C67:C83)","v":0},{"$f":"SUM(D67:D83)","v":0},{"$f":"SUM(E67:E83)","v":0},{"$f":"SUM(F67:F83)","v":0},{"$f":"SUM(G67:G83)","v":6839.1734620000007},{"$f":"SUM(H67:H83)","v":18964.92106434286},{"$f":"SUM(I67:I83)","v":28527.125907405716},{"$f":"SUM(J67:J83)","v":36607.341369056216},{"$f":"SUM(K67:K83)","v":45179.662815653232},{"$f":"SUM(L67:L83)","v":57887.858078842452},{"$f":"SUM(M67:M83)","v":78997.34684016784},{"$f":"SUM(N67:N83)","v":93535.620109447991},{"$f":"SUM(O67:O83)","v":96688.020957230692},{"$f":"SUM(P67:P83)","v":100429.0462313324},{"$f":"SUM(Q67:Q83)","v":104532.00118449981},{"$f":"SUM(R67:R83)","v":109013.05625270319}]
[]
[]
["Nominal pre tax WACC",null,null,null,null,null,null,null,null,null,null,null,null,{"$f":"WACC!E$8","v":6.7711549922628622E-2},{"$f":"WACC!F$8","v":5.4148264810301105E-2},{"$f":"WACC!G$8","v":6.3648502140823515E-2},{"$f":"WACC!H$8","v":6.7711549922628622E-2},{"$f":"WACC!I$8","v":6.7711549922628622E-2}]
[]
[]
[{"$f":"$A$11","v":"Poles and Brackets"}]
["RAB",null,{"$f":"C$6","v":2005},{"$f":"D$6","v":2006},2007,2008,2009,2010,2011,2012,2013,2014,2015,2016,2017,2018,2019,2020]
["Opening RAB",null,{"$f":"'RAB 2001 to 2004'!E113","v":4361161.4197628647},{"$f":"C95","v":4812153.5845319554},4832242.8921581889,4747280.7712129941,4771112.9359820848,4849678.7528940318,5730343.075540673,6256505.8564077234,7708429.8161191465,9675681.3316965345,12327892.359845165,{"$f":"M95","v":16284881.667705698},{"$f":"N95","v":16522455.631627286},{"$f":"O95","v":16746579.031492161},{"$f":"P95","v":16964862.794984549},{"$f":"Q95","v":17180627.478038464}]
["Additional Capex",null,{"$f":"C$11","v":591600},171600,70000,182400,243213.85000000003,1063986.6485714279,735187.59600000049,1695675.3889145812,2267621.4713558382,3028236.0919746589,4439699.1610149844,795066.17907735787,804466.0758046743,821859.6642906958,843126.09469487052,865075.6045695116]
["Depreciation",null,{"$f":"C$42","v":140607.83523090943},151510.69237376656,154962.12094519511,158567.8352309094,164648.03308805227,183322.32592478694,209024.81513295023,243751.42920315854,300369.95577845024,376025.06382602878,482709.85315445228,557492.21515577147,580342.67593980045,603575.90079830575,627361.41164095665,651764.29305901937]
["Closing RAB",null,{"$f":"C92+C93-C94","v":4812153.5845319554},4832242.8921581889,4747280.7712129941,4771112.9359820848,4849678.7528940318,5730343.075540673,6256505.8564077234,7708429.8161191465,9675681.3316965345,12327892.359845165,16284881.667705698,{"$f":"N92+N93-N94","v":16522455.631627286},16746579.031492161,16964862.794984549,17180627.478038464,17393938.789548956]
["Average RAB",null,{"$f":"SUM(C92,C95)/2","v":4586657.5021474101},4822198.2383450717,4789761.8316855915,4759196.8535975395,{"$f":"SUM(G92,G95)/2","v":4810395.8444380583},5290010.9142173529,5993424.4659741987,6982467.836263435,8692055.573907841,11001786.845770851,14306387.013775431,16403668.649666492,16634517.331559723,16855720.913238354,17072745.136511505,17287283.133793712]
[]
["Total Value to be recovered by change in unit rates",null,null,null,null,null,null,null,null,null,null,null,null,{"$f":"N$6","v":2016},2017,2018,2019,2020]
["Depreciation",null,null,null,null,null,null,null,null,null,null,null,null,{"$f":"N94","v":557492.21515577147},{"$f":"O94","v":580342.67593980045},{"$f":"P94","v":603575.90079830575},{"$f":"Q94","v":627361.41164095665},{"$f":"R94","v":651764.29305901937}]
["ROA",null,null,null,null,null,null,null,null,null,null,null,null,{"$f":"N$87*N96","v":1110717.8286861507},{"$f":"O$87*O96","v":900730.2494608392},1072841.388631375,1156022.0346272138,1170548.7349404886]
[null,null,null,null,null,null,null,null,null,null,null,null,null,{"$f":"SUM(N99:N100)","v":1668210.0438419222},1481072.9254006397,1676417.2894296809,1783383.4462681706,1822313.027999508]
[]
[]
[{"$f":"$A$13","v":"Existing Lights"}]
[{"$f":"$A$14","v":"Luminaires"}]
["RAB",null,{"$f":"$C$6","v":2005},{"$f":"$D$6","v":2006},{"$f":"$E$6","v":2007},{"$f":"$F$6","v":2008},{"$f":"G$6","v":2009},{"$f":"H$6","v":2010},2011,2012,2013,2014,2015,2016,2017,2018,2019,2020]
["Opening RAB",null,{"$f":"'RAB 2001 to 2004'!E77","v":6003995.8158306396},{"$f":"C110","v":7977680.4927289374},8195045.1696272353,7981849.8465255322,8193014.5234238291,8338145.4503041273,8293531.273795912,8121107.856321387,7879866.6157683767,7715192.7991101183,7842437.3642600402,{"$f":"M110","v":8450330.5439801253},{"$f":"N110","v":9001972.3040387258},{"$f":"O110","v":9332597.9614158385},{"$f":"P110","v":10094066.158154076},{"$f":"Q110","v":10825465.371683381}]
["Additional Capex",null,{"$f":"C$14","v":2366400},686400,280000,729600,699288.46152000013,540539.04581485712,437172.59589120012,389009.32072819944,487489.20783708326,811892.12291404186,1346500.5544174933,1357858.1011450733,1200808.6676843211,1704278.3833205663,1760837.2919945116,1825809.6157438308]
["Depreciation",null,{"$f":"C$63","v":392715.32310170203},469035.32310170203,493195.32310170203,518435.32310170203,554157.53463970206,585153.22232307342,609596.01336572482,630250.56128120993,652163.02449534193,684647.55776412005,738607.37469740841,806216.34108647262,870183.01030720747,942810.18658232957,1029438.0784652065,1119104.2511586649]
["Closing RAB",null,{"$f":"C107+C108-C109","v":7977680.4927289374},8195045.1696272353,7981849.8465255322,8193014.5234238291,8338145.4503041273,8293531.273795912,8121107.856321387,7879866.6157683767,7715192.7991101183,7842437.3642600402,8450330.5439801253,{"$f":"N107+N108-N109","v":9001972.3040387258},9332597.9614158385,10094066.158154076,10825465.371683381,11532170.736268546]
["Average RAB",null,{"$f":"SUM(C107,C110)/2","v":6990838.154279789},{"$f":"SUM(D107,D110)/2","v":8086362.8311780859},{"$f":"SUM(E107,E110)/2","v":8088447.5080763837},{"$f":"SUM(F107,F110)/2","v":8087432.1849746807},{"$f":"SUM(G107,G110)/2","v":8265579.9868639782},8315838.3620500192,8207319.5650586495,8000487.2360448819,7797529.7074392475,7778815.0816850793,8146383.9541200828,8726151.4240094256,9167285.1327272821,9713332.0597849563,10459765.76491873,11178818.053975964]
[]
["Total Value to be recovered by change in unit rates",null,null,null,null,null,null,null,null,null,null,null,null,{"$f":"N$6","v":2016},2017,2018,2019,2020]
["Depreciation",null,null,null,null,null,null,null,null,null,null,null,null,{"$f":"N109","v":806216.34108647262},{"$f":"O109","v":870183.01030720747},{"$f":"P109","v":942810.18658232957},{"$f":"Q109","v":1029438.0784652065},{"$f":"R109","v":1119104.2511586649}]
["ROA",null,null,null,null,null,null,null,null,null,null,null,null,{"$f":"N$87*N111","v":590861.23777923104},{"$f":"O$87*O111","v":496392.58295845322},618239.0364017525,708246.95177029632,756935.0967377756]
[null,null,null,null,null,null,null,null,null,null,null,null,null,{"$f":"SUM(N114:N115)","v":1397077.5788657037},1366575.5932656606,1561049.2229840821,1737685.0302355029,1876039.3478964404]
[]
[]
[{"$f":"$A$16","v":"Energy Efficient Lights"}]
[{"$f":"$A$17","v":"Luminaires and Ballasts"}]
["RAB",null,{"$f":"$C$6","v":2005},{"$f":"$D$6","v":2006},{"$f":"$E$6","v":2007},{"$f":"$F$6","v":2008},{"$f":"G$6","v":2009},{"$f":"H$6","v":2010},2011,2012,2013,2014,2015,2016,2017,2018,2019,2020]
["Opening RAB",null,0,{"$f":"C125","v":0},0,0,0,266727.76501800003,459225.8095673715,601723.91176876577,717299.96075692947,862829.76544793707,1122560.2503900025,{"$f":"M125","v":1570324.1109819426},{"$f":"N125","v":1531558.2142115925},{"$f":"O125","v":1506196.5038265714},{"$f":"P125","v":1484082.1579870982},{"$f":"Q125","v":1465353.6545374354}]
["Additional Capex",null,{"$f":"C$17","v":0},0,0,0,273566.93848000001,211462.96561371427,171025.22810880005,152183.39035721993,190709.46750666085,317618.34302090784,526761.20743210788,54769.723339097909,71326.310572209593,78314.700391859194,85803.497734836928,93438.704993298365]
["Depreciation",null,{"$f":"C$84","v":0},0,0,0,6839.1734620000007,18964.92106434286,28527.125907405716,36607.341369056216,45179.662815653232,57887.858078842452,78997.34684016784,93535.620109447991,96688.020957230692,100429.0462313324,104532.00118449981,109013.05625270319]
["Closing RAB",null,{"$f":"C122+C123-C124","v":0},0,0,0,266727.76501800003,459225.8095673715,601723.91176876577,717299.96075692947,862829.76544793707,1122560.2503900025,1570324.1109819426,{"$f":"N122+N123-N124","v":1531558.2142115925},1506196.5038265714,1484082.1579870982,1465353.6545374354,1449779.3032780304]
["Average RAB",null,{"$f":"SUM(C122,C125)/2","v":0},0,0,0,{"$f":"SUM(G122,G125)/2","v":133363.88250900002},362976.78729268577,530474.86066806864,659511.93626284762,790064.86310243327,992695.00791896973,1346442.1806859726,1550941.1625967675,1518877.359019082,1495139.3309068349,1474717.9062622669,1457566.4789077328]
[]
["Total Value to be recovered by change in unit rates",null,null,null,null,null,null,null,null,null,null,null,null,{"$f":"N$6","v":2016},2017,2018,2019,2020]
["Depreciation",null,null,null,null,null,null,null,null,null,null,null,null,{"$f":"N124","v":93535.620109447991},{"$f":"O124","v":96688.020957230692},{"$f":"P124","v":100429.0462313324},{"$f":"Q124","v":104532.00118449981},{"$f":"R124","v":109013.05625270319}]
["ROA",null,null,null,null,null,null,null,null,null,null,null,null,{"$f":"N$87*N126","v":105016.6299582307},{"$f":"O$87*O126","v":82244.573450536045},95163.378904053126,99855.435131671838,98694.08540211097]
[null,null,null,null,null,null,null,null,null,null,null,null,null,{"$f":"SUM(N129:N130)","v":198552.25006767869},178932.59440776674,195592.42513538554,204387.43631617166,207707.14165481416]
[]
[]
[]
["Total Public Lighting RAB"]
["Historical cost ($)"]
[]
["RAB",null,{"$f":"C$6","v":2005},{"$f":"D$6","v":2006},{"$f":"E$6","v":2007},2008,2009,2010,2011,2012,2013,2014,2015,2016,2017,2018,2019,2020]
["Opening RAB",null,{"$f":"SUM(C92,C107,C122)","v":10365157.235593505},{"$f":"C142","v":12789834.077260893},{"$f":"D142","v":13027288.061785424},12729130.617738526,12964127.459405914,13454551.96821616,14483100.158903955,14979337.624497874,16305596.392644448,18253703.896254584,21292889.974495202,26305536.322667759,27055986.149877597,27585373.496734563,28543011.111125715,29471446.50425927]
["Capex",null,{"$f":"SUM(C93,C108,C123)","v":2958000},{"$f":"SUM(D93,D108,D123)","v":858000},350000,912000,1216069.2500000002,1815988.6599999992,1343385.4200000006,2236868.1000000006,2945820.1466995822,4157746.5579096088,6312960.9228645861,2207694.0035615293,2076601.0540612049,2604452.7480031215,2689766.8844242189,2784323.9253066406]
["Depreciation",null,{"$f":"SUM(C94,C109,C124)","v":533323.15833261143},620546.01547546859,648157.44404689712,677003.15833261143,725644.74118975434,787440.46931220323,847147.95440608077,910609.33185342478,997712.64308944542,1118560.4796689914,1300314.5746920286,1457244.1763516921,1547213.7072042385,1646815.1336119678,1761331.4912906629,1879881.6004703874]
["Closing RAB",null,{"$f":"C139+C140-C141","v":12789834.077260893},{"$f":"D139+D140-D141","v":13027288.061785424},{"$f":"E139+E140-E141","v":12729130.617738526},12964127.459405914,13454551.96821616,14483100.158903955,14979337.624497874,16305596.392644448,18253703.896254584,21292889.974495202,26305536.322667759,27055986.149877597,27585373.496734563,28543011.111125715,29471446.50425927,30375888.829095524]
["Average RAB",null,{"$f":"SUM(C139,C142)/2","v":11577495.656427199},{"$f":"SUM(D139,D142)/2","v":12908561.069523159},{"$f":"SUM(E139,E142)/2","v":12878209.339761976},12846629.03857222,13209339.713811036,13968826.063560057,14731218.891700914,15642467.008571161,17279650.144449517,19773296.935374893,23799213.148581482,26680761.236272678,27320679.82330608,28064192.303930141,29007228.807692491,29923667.666677397]
["Check",{"$f":"SUM(C144:R144)","v":7.0780515670776367E-8},{"$f":"ABS(C142-SUM(C95,C110,C125))","v":0},0,0,0,1.862645149230957E-9,1.862645149230957E-9,3.7252902984619141E-9,3.7252902984619141E-9,7.4505805969238281E-9,7.4505805969238281E-9,3.7252902984619141E-9,3.7252902984619141E-9,7.4505805969238281E-9,1.1175870895385742E-8,1.1175870895385742E-8,7.4505805969238281E-9]

{"sheet":"RAB 2001 to 2004","index":13,"n_rows":237,"n_cols":41,"rows_kept":237,"cut":false,"hidden":false,"merged":[[80,5,80,20],[87,5,87,20],[45,5,45,20],[52,5,52,20],[205,1,205,5],[205,7,205,11],[205,13,205,17],[205,19,205,23]]}
[{"$f":"'Inputs PL Final Decision 2004'!$A$125","v":"Powercor"}]
[]
["Public Lighting RAB - Assets constructed between 1 January 2001 and 31 December 2004."]
["Historical cost ($)"]
[]
["Summary"]
[]
["Cost Per Unit",null,2016,2017,2018,2019,2020]
["Rate of return (per annum) (Nominal Pre tax WACC)",null,{"$f":"WACC!E$8","v":6.7711549922628622E-2},{"$f":"WACC!F$8","v":5.4148264810301105E-2},{"$f":"WACC!G$8","v":6.3648502140823515E-2},{"$f":"WACC!H$8","v":6.7711549922628622E-2},{"$f":"WACC!I$8","v":6.7711549922628622E-2}]
[]
["Luminaires"]
[{"$f":"$A$132","v":"MV 80"}]
["Luminaire - depreciation",null,{"$f":"Q142","v":2.2702670695480771},{"$f":"R142","v":2.2702670695480771},{"$f":"S142","v":2.2702670695480771},{"$f":"T142","v":2.2702670695480771},{"$f":"U142","v":2.2702670695480771}]
["Luminaire - return on",null,{"$f":"Q141*C$9","v":0.99920146311312885},{"$f":"R141*D$9","v":0.67612062359597569},{"$f":"S141*E$9","v":0.65024594296367366},{"$f":"T141*F$9","v":0.53803155706091543},{"$f":"U141*G$9","v":0.38430825504351107}]
["Capital Charge",null,{"$f":"SUM(C13:C14)","v":3.2694685326612061},{"$f":"SUM(D13:D14)","v":2.9463876931440529},{"$f":"SUM(E13:E14)","v":2.9205130125117509},{"$f":"SUM(F13:F14)","v":2.8082986266089924},{"$f":"SUM(G13:G14)","v":2.6545753245915882}]
[]
[{"$f":"$A$146","v":"S-HP 150 "}]
["Luminaire - depreciation",null,{"$f":"Q156","v":2.3144143108096151},{"$f":"R156","v":2.3144143108096151},{"$f":"S156","v":2.3144143108096151},{"$f":"T156","v":2.3144143108096151},{"$f":"U156","v":2.3144143108096151}]
["Luminaire - return on",null,{"$f":"Q155*C$9","v":1.0186317709622039},{"$f":"R155*D$9","v":0.68926835440358258},{"$f":"S155*E$9","v":0.66289051897343265},{"$f":"T155*F$9","v":0.54849403051810985},{"$f":"U155*G$9","v":0.39178145037007844}]
["Capital Charge",null,{"$f":"SUM(C18:C19)","v":3.333046081771819},{"$f":"SUM(D18:D19)","v":3.0036826652131978},{"$f":"SUM(E18:E19)","v":2.9773048297830478},{"$f":"SUM(F18:F19)","v":2.8629083413277252},{"$f":"SUM(G18:G19)","v":2.7061957611796936}]
[]
[{"$f":"$A$160","v":"S-HP 250 "}]
["Luminaire - depreciation",null,{"$f":"Q170","v":2.5272728457679556},{"$f":"R170","v":2.5272728457679556},{"$f":"S170","v":2.5272728457679556},{"$f":"T170","v":2.5272728457679556},{"$f":"U170","v":2.5272728457679556}]
["Luminaire - return on",null,{"$f":"Q169*C$9","v":1.112316149518084},{"$f":"R169*D$9","v":0.75266091615289599},{"$f":"S169*E$9","v":0.72385709010438093},{"$f":"T169*F$9","v":0.59893946512512219},{"$f":"U169*G$9","v":0.42781390366080158}]
["Capital Charge",null,{"$f":"SUM(C23:C24)","v":3.6395889952860396},{"$f":"SUM(D23:D24)","v":3.2799337619208515},{"$f":"SUM(E23:E24)","v":3.2511299358723367},{"$f":"SUM(F23:F24)","v":3.1262123108930777},{"$f":"SUM(G23:G24)","v":2.9550867494287574}]
[]
[{"$f":"$A$174","v":"Poles & Brackets"}]
[{"$f":"$A$175","v":"Dedicated poles"}]
["Dedicated poles - depreciation",null,{"$f":"Q184","v":0.69840901848387849},{"$f":"R184","v":0.69840901848387849},{"$f":"S184","v":0.69840901848387849},{"$f":"T184","v":0.69840901848387849},{"$f":"U184","v":0.69840901848387849}]
["Dedicated poles - return on",null,{"$f":"Q183*C$9","v":1.0167426781119318},{"$f":"R183*D$9","v":0.77526154781473433},{"$f":"S183*E$9","v":0.86682741420876108},{"$f":"T183*F$9","v":0.8748716067474761},{"$f":"U183*G$9","v":0.82758124962599089}]
["Capital Charge",null,{"$f":"SUM(C29:C30)","v":1.7151516965958102},{"$f":"SUM(D29:D30)","v":1.4736705662986127},{"$f":"SUM(E29:E30)","v":1.5652364326926396},{"$f":"SUM(F29:F30)","v":1.5732806252313547},{"$f":"SUM(G29:G30)","v":1.5259902681098694}]
[]
[{"$f":"A189","v":"Brackets"}]
["Brackets - depreciation",null,{"$f":"Q198","v":0.21358936246952218},{"$f":"R198","v":0.21358936246952218},{"$f":"S198","v":0.21358936246952218},{"$f":"T198","v":0.21358936246952218},{"$f":"U198","v":0.21358936246952218}]
["Brackets - return on",null,{"$f":"Q197*C$9","v":0.31094303576564564},{"$f":"R197*D$9","v":0.23709261387309302},{"$f":"S197*E$9","v":0.26509553839077099},{"$f":"T197*F$9","v":0.26755563542625321},{"$f":"U197*G$9","v":0.25309316864645576}]
["Capital Charge",null,{"$f":"SUM(C34:C35)","v":0.52453239823516784},{"$f":"SUM(D34:D35)","v":0.4506819763426152},{"$f":"SUM(E34:E35)","v":0.47868490086029314},{"$f":"SUM(F34:F35)","v":0.48114499789577536},{"$f":"SUM(G34:G35)","v":0.46668253111597791}]
[]
[]
[]
[]
["Closing RAB at 31 December 2004 and Depreciation per annum 2005 onwards"]
[]
["Note : Calculation of the closing $ value of RAB in 2004 is Unit WDV at 31 December 2004 multiplied by volumes at 31 December 2004."]
[]
["Luminaires"]
["Depreciation",null,null,null,"Closing RAB per unit","Depreciation per unit"]
[null,null,null,null,2004,2005,2006,2007,2008,2009,2010,2011,2012,2013,2014,2015,2016,2017,2018,2019,2020]
[{"$f":"'DNSP Inputs General'!A$41","v":"Mercury vapour 80 watt"},null,null,null,{"$f":"F141+F142/2","v":40.8648072518654},{"$f":"F142","v":2.2702670695480771},{"$f":"G142","v":2.2702670695480771},2.2702670695480771,2.2702670695480771,2.2702670695480771,2.2702670695480771,2.2702670695480771,2.2702670695480771,2.2702670695480771,2.2702670695480771,2.2702670695480771,2.2702670695480771,2.2702670695480771,2.2702670695480771,2.2702670695480771,2.2702670695480771]
[{"$f":"'DNSP Inputs General'!A$42","v":"Sodium high pressure 150 watt"},null,null,null,{"$f":"F155+F156/2","v":41.65945759457307},{"$f":"F156","v":2.3144143108096151},{"$f":"G156","v":2.3144143108096151},2.3144143108096151,2.3144143108096151,2.3144143108096151,2.3144143108096151,2.3144143108096151,2.3144143108096151,2.3144143108096151,2.3144143108096151,2.3144143108096151,2.3144143108096151,2.3144143108096151,2.3144143108096151,2.3144143108096151,2.3144143108096151]
[{"$f":"'DNSP Inputs General'!A$43","v":"Sodium high pressure 250 watt"},null,null,null,{"$f":"F169+F170/2","v":45.490911223823197},{"$f":"F170","v":2.5272728457679556},{"$f":"G170","v":2.5272728457679556},2.5272728457679556,2.5272728457679556,2.5272728457679556,2.5272728457679556,2.5272728457679556,2.5272728457679556,2.5272728457679556,2.5272728457679556,2.5272728457679556,2.5272728457679556,2.5272728457679556,2.5272728457679556,2.5272728457679556,2.5272728457679556]
[]
[]
["Light Type",null,"Assumed",null,"Closing RAB","Depreciation"]
[null,null," 2004 Volumes",null,{"$f":"E$47","v":2004},2005,2006,2007,2008,2009,2010,2011,2012,2013,2014,2015,2016,2017,2018,2019,2020]
[{"$f":"'DNSP Inputs General'!A$41","v":"Mercury vapour 80 watt"},null,{"$f":"76225.5+28165.2173951391","v":104390.7173951391},null,{"$f":"E48*$C55","v":4265906.5452363119},{"$f":"F48*$C55","v":236994.80806868392},236994.80806868392,236994.80806868392,236994.80806868392,236994.80806868392,236994.80806868392,236994.80806868392,236994.80806868392,236994.80806868392,236994.80806868392,236994.80806868392,236994.80806868392,{"$f":"R48*$C55","v":236994.80806868392},{"$f":"S48*$C55","v":236994.80806868392},236994.80806868392,236994.80806868392]
[{"$f":"'DNSP Inputs General'!A$42","v":"Sodium high pressure 150 watt"},null,24111.399964243108,null,{"$f":"E49*$C56","v":1004467.8443561764},{"$f":"F49*$C56","v":55803.76913089869},55803.76913089869,55803.76913089869,55803.76913089869,55803.76913089869,55803.76913089869,55803.76913089869,55803.76913089869,55803.76913089869,55803.76913089869,55803.76913089869,55803.76913089869,{"$f":"R49*$C56","v":55803.76913089869},{"$f":"S49*$C56","v":55803.76913089869},55803.76913089869,55803.76913089869]
[{"$f":"'DNSP Inputs General'!A$43","v":"Sodium high pressure 250 watt"},null,11247.312472435277,null,{"$f":"E50*$C57","v":511650.49319015257},{"$f":"F50*$C57","v":28425.027399452923},28425.027399452923,28425.027399452923,28425.027399452923,28425.027399452923,28425.027399452923,28425.027399452923,28425.027399452923,28425.027399452923,28425.027399452923,28425.027399452923,28425.027399452923,{"$f":"R50*$C57","v":28425.027399452923},{"$f":"S50*$C57","v":28425.027399452923},28425.027399452923,28425.027399452923]
[{"$f":"'DNSP Inputs General'!A$44","v":"Fluorescent 20 watt"},null,69.941957458950512,null,{"$f":"IF('DNSP Inputs General'!$B44='DNSP Inputs General'!$A$41,E$48,IF('DNSP Inputs General'!$B44='DNSP Inputs General'!$A$42,E$49,E$50))*'DNSP Inputs General'!$D44*$C58","v":6059.3089740017467},{"$f":"IF('DNSP Inputs General'!$B44='DNSP Inputs General'!$A$41,F$48,IF('DNSP Inputs General'!$B44='DNSP Inputs General'!$A$42,F$49,F$50))*'DNSP Inputs General'!$D44*$C58","v":336.62827633343028},{"$f":"IF('DNSP Inputs General'!$B44='DNSP Inputs General'!$A$41,G$48,IF('DNSP Inputs General'!$B44='DNSP Inputs General'!$A$42,G$49,G$50))*'DNSP Inputs General'!$D44*$C58","v":336.62827633343028},{"$f":"IF('DNSP Inputs General'!$B44='DNSP Inputs General'!$A$41,H$48,IF('DNSP Inputs General'!$B44='DNSP Inputs General'!$A$42,H$49,H$50))*'DNSP Inputs General'!$D44*$C58","v":336.62827633343028},{"$f":"IF('DNSP Inputs General'!$B44='DNSP Inputs General'!$A$41,I$48,IF('DNSP Inputs General'!$B44='DNSP Inputs General'!$A$42,I$49,I$50))*'DNSP Inputs General'!$D44*$C58","v":336.62827633343028},{"$f":"IF('DNSP Inputs General'!$B44='DNSP Inputs General'!$A$41,J$48,IF('DNSP Inputs General'!$B44='DNSP Inputs General'!$A$42,J$49,J$50))*'DNSP Inputs General'!$D44*$C58","v":336.62827633343028},{"$f":"IF('DNSP Inputs General'!$B44='DNSP Inputs General'!$A$41,K$48,IF('DNSP Inputs General'!$B44='DNSP Inputs General'!$A$42,K$49,K$50))*'DNSP Inputs General'!$D44*$C58","v":336.62827633343028},{"$f":"IF('DNSP Inputs General'!$B44='DNSP Inputs General'!$A$41,L$48,IF('DNSP Inputs General'!$B44='DNSP Inputs General'!$A$42,L$49,L$50))*'DNSP Inputs General'!$D44*$C58","v":336.62827633343028},{"$f":"IF('DNSP Inputs General'!$B44='DNSP Inputs General'!$A$41,M$48,IF('DNSP Inputs General'!$B44='DNSP Inputs General'!$A$42,M$49,M$50))*'DNSP Inputs General'!$D44*$C58","v":336.62827633343028},{"$f":"IF('DNSP Inputs General'!$B44='DNSP Inputs General'!$A$41,N$48,IF('DNSP Inputs General'!$B44='DNSP Inputs General'!$A$42,N$49,N$50))*'DNSP Inputs General'!$D44*$C58","v":336.62827633343028},{"$f":"IF('DNSP Inputs General'!$B44='DNSP Inputs General'!$A$41,O$48,IF('DNSP Inputs General'!$B44='DNSP Inputs General'!$A$42,O$49,O$50))*'DNSP Inputs General'!$D44*$C58","v":336.62827633343028},{"$f":"IF('DNSP Inputs General'!$B44='DNSP Inputs General'!$A$41,P$48,IF('DNSP Inputs General'!$B44='DNSP Inputs General'!$A$42,P$49,P$50))*'DNSP Inputs General'!$D44*$C58","v":336.62827633343028},{"$f":"IF('DNSP Inputs General'!$B44='DNSP Inputs General'!$A$41,Q$48,IF('DNSP Inputs General'!$B44='DNSP Inputs General'!$A$42,Q$49,Q$50))*'DNSP Inputs General'!$D44*$C58","v":336.62827633343028},{"$f":"IF('DNSP Inputs General'!$B44='DNSP Inputs General'!$A$41,R$48,IF('DNSP Inputs General'!$B44='DNSP Inputs General'!$A$42,R$49,R$50))*'DNSP Inputs General'!$D44*$C58","v":336.62827633343028},{"$f":"IF('DNSP Inputs General'!$B44='DNSP Inputs General'!$A$41,S$48,IF('DNSP Inputs General'!$B44='DNSP Inputs General'!$A$42,S$49,S$50))*'DNSP Inputs General'!$D44*$C58","v":336.62827633343028},{"$f":"IF('DNSP Inputs General'!$B44='DNSP Inputs General'!$A$41,T$48,IF('DNSP Inputs General'!$B44='DNSP Inputs General'!$A$42,T$49,T$50))*'DNSP Inputs General'!$D44*$C58","v":336.62827633343028},{"$f":"IF('DNSP Inputs General'!$B44='DNSP Inputs General'!$A$41,U$48,IF('DNSP Inputs General'!$B44='DNSP Inputs General'!$A$42,U$49,U$50))*'DNSP Inputs General'!$D44*$C58","v":336.62827633343028}]
[{"$f":"'DNSP Inputs General'!A$45","v":"Fluorescent 40 watt"},null,27.473141821279967,null,{"$f":"IF('DNSP Inputs General'!$B45='DNSP Inputs General'!$A$41,E$48,IF('DNSP Inputs General'!$B45='DNSP Inputs General'!$A$42,E$49,E$50))*'DNSP Inputs General'!$D45*$C59","v":2380.0914476751086},{"$f":"IF('DNSP Inputs General'!$B45='DNSP Inputs General'!$A$41,F$48,IF('DNSP Inputs General'!$B45='DNSP Inputs General'!$A$42,F$49,F$50))*'DNSP Inputs General'!$D45*$C59","v":132.2273026486171},{"$f":"IF('DNSP Inputs General'!$B45='DNSP Inputs General'!$A$41,G$48,IF('DNSP Inputs General'!$B45='DNSP Inputs General'!$A$42,G$49,G$50))*'DNSP Inputs General'!$D45*$C59","v":132.2273026486171},{"$f":"IF('DNSP Inputs General'!$B45='DNSP Inputs General'!$A$41,H$48,IF('DNSP Inputs General'!$B45='DNSP Inputs General'!$A$42,H$49,H$50))*'DNSP Inputs General'!$D45*$C59","v":132.2273026486171},{"$f":"IF('DNSP Inputs General'!$B45='DNSP Inputs General'!$A$41,I$48,IF('DNSP Inputs General'!$B45='DNSP Inputs General'!$A$42,I$49,I$50))*'DNSP Inputs General'!$D45*$C59","v":132.2273026486171},{"$f":"IF('DNSP Inputs General'!$B45='DNSP Inputs General'!$A$41,J$48,IF('DNSP Inputs General'!$B45='DNSP Inputs General'!$A$42,J$49,J$50))*'DNSP Inputs General'!$D45*$C59","v":132.2273026486171},{"$f":"IF('DNSP Inputs General'!$B45='DNSP Inputs General'!$A$41,K$48,IF('DNSP Inputs General'!$B45='DNSP Inputs General'!$A$42,K$49,K$50))*'DNSP Inputs General'!$D45*$C59","v":132.2273026486171},{"$f":"IF('DNSP Inputs General'!$B45='DNSP Inputs General'!$A$41,L$48,IF('DNSP Inputs General'!$B45='DNSP Inputs General'!$A$42,L$49,L$50))*'DNSP Inputs General'!$D45*$C59","v":132.2273026486171},{"$f":"IF('DNSP Inputs General'!$B45='DNSP Inputs General'!$A$41,M$48,IF('DNSP Inputs General'!$B45='DNSP Inputs General'!$A$42,M$49,M$50))*'DNSP Inputs General'!$D45*$C59","v":132.2273026486171},{"$f":"IF('DNSP Inputs General'!$B45='DNSP Inputs General'!$A$41,N$48,IF('DNSP Inputs General'!$B45='DNSP Inputs General'!$A$42,N$49,N$50))*'DNSP Inputs General'!$D45*$C59","v":132.2273026486171},{"$f":"IF('DNSP Inputs General'!$B45='DNSP Inputs General'!$A$41,O$48,IF('DNSP Inputs General'!$B45='DNSP Inputs General'!$A$42,O$49,O$50))*'DNSP Inputs General'!$D45*$C59","v":132.2273026486171},{"$f":"IF('DNSP Inputs General'!$B45='DNSP Inputs General'!$A$41,P$48,IF('DNSP Inputs General'!$B45='DNSP Inputs General'!$A$42,P$49,P$50))*'DNSP Inputs General'!$D45*$C59","v":132.2273026486171},{"$f":"IF('DNSP Inputs General'!$B45='DNSP Inputs General'!$A$41,Q$48,IF('DNSP Inputs General'!$B45='DNSP Inputs General'!$A$42,Q$49,Q$50))*'DNSP Inputs General'!$D45*$C59","v":132.2273026486171},{"$f":"IF('DNSP Inputs General'!$B45='DNSP Inputs General'!$A$41,R$48,IF('DNSP Inputs General'!$B45='DNSP Inputs General'!$A$42,R$49,R$50))*'DNSP Inputs General'!$D45*$C59","v":132.2273026486171},{"$f":"IF('DNSP Inputs General'!$B45='DNSP Inputs General'!$A$41,S$48,IF('DNSP Inputs General'!$B45='DNSP Inputs General'!$A$42,S$49,S$50))*'DNSP Inputs General'!$D45*$C59","v":132.2273026486171},{"$f":"IF('DNSP Inputs General'!$B45='DNSP Inputs General'!$A$41,T$48,IF('DNSP Inputs General'!$B45='DNSP Inputs General'!$A$42,T$49,T$50))*'DNSP Inputs General'!$D45*$C59","v":132.2273026486171},{"$f":"IF('DNSP Inputs General'!$B45='DNSP Inputs General'!$A$41,U$48,IF('DNSP Inputs General'!$B45='DNSP Inputs General'!$A$42,U$49,U$50))*'DNSP Inputs General'!$D45*$C59","v":132.2273026486171}]
[{"$f":"'DNSP Inputs General'!A$46","v":"Mercury vapour 50 watt"},null,449.28398215784944,null,{"$f":"IF('DNSP Inputs General'!$B46='DNSP Inputs General'!$A$41,E$48,IF('DNSP Inputs General'!$B46='DNSP Inputs General'!$A$42,E$49,E$50))*'DNSP Inputs General'!$D46*$C60","v":25520.265631801158},{"$f":"IF('DNSP Inputs General'!$B46='DNSP Inputs General'!$A$41,F$48,IF('DNSP Inputs General'!$B46='DNSP Inputs General'!$A$42,F$49,F$50))*'DNSP Inputs General'!$D46*$C60","v":1417.792535100064},{"$f":"IF('DNSP Inputs General'!$B46='DNSP Inputs General'!$A$41,G$48,IF('DNSP Inputs General'!$B46='DNSP Inputs General'!$A$42,G$49,G$50))*'DNSP Inputs General'!$D46*$C60","v":1417.792535100064},{"$f":"IF('DNSP Inputs General'!$B46='DNSP Inputs General'!$A$41,H$48,IF('DNSP Inputs General'!$B46='DNSP Inputs General'!$A$42,H$49,H$50))*'DNSP Inputs General'!$D46*$C60","v":1417.792535100064},{"$f":"IF('DNSP Inputs General'!$B46='DNSP Inputs General'!$A$41,I$48,IF('DNSP Inputs General'!$B46='DNSP Inputs General'!$A$42,I$49,I$50))*'DNSP Inputs General'!$D46*$C60","v":1417.792535100064},{"$f":"IF('DNSP Inputs General'!$B46='DNSP Inputs General'!$A$41,J$48,IF('DNSP Inputs General'!$B46='DNSP Inputs General'!$A$42,J$49,J$50))*'DNSP Inputs General'!$D46*$C60","v":1417.792535100064},{"$f":"IF('DNSP Inputs General'!$B46='DNSP Inputs General'!$A$41,K$48,IF('DNSP Inputs General'!$B46='DNSP Inputs General'!$A$42,K$49,K$50))*'DNSP Inputs General'!$D46*$C60","v":1417.792535100064},{"$f":"IF('DNSP Inputs General'!$B46='DNSP Inputs General'!$A$41,L$48,IF('DNSP Inputs General'!$B46='DNSP Inputs General'!$A$42,L$49,L$50))*'DNSP Inputs General'!$D46*$C60","v":1417.792535100064},{"$f":"IF('DNSP Inputs General'!$B46='DNSP Inputs General'!$A$41,M$48,IF('DNSP Inputs General'!$B46='DNSP Inputs General'!$A$42,M$49,M$50))*'DNSP Inputs General'!$D46*$C60","v":1417.792535100064},{"$f":"IF('DNSP Inputs General'!$B46='DNSP Inputs General'!$A$41,N$48,IF('DNSP Inputs General'!$B46='DNSP Inputs General'!$A$42,N$49,N$50))*'DNSP Inputs General'!$D46*$C60","v":1417.792535100064},{"$f":"IF('DNSP Inputs General'!$B46='DNSP Inputs General'!$A$41,O$48,IF('DNSP Inputs General'!$B46='DNSP Inputs General'!$A$42,O$49,O$50))*'DNSP Inputs General'!$D46*$C60","v":1417.792535100064},{"$f":"IF('DNSP Inputs General'!$B46='DNSP Inputs General'!$A$41,P$48,IF('DNSP Inputs General'!$B46='DNSP Inputs General'!$A$42,P$49,P$50))*'DNSP Inputs General'!$D46*$C60","v":1417.792535100064},{"$f":"IF('DNSP Inputs General'!$B46='DNSP Inputs General'!$A$41,Q$48,IF('DNSP Inputs General'!$B46='DNSP Inputs General'!$A$42,Q$49,Q$50))*'DNSP Inputs General'!$D46*$C60","v":1417.792535100064},{"$f":"IF('DNSP Inputs General'!$B46='DNSP Inputs General'!$A$41,R$48,IF('DNSP Inputs General'!$B46='DNSP Inputs General'!$A$42,R$49,R$50))*'DNSP Inputs General'!$D46*$C60","v":1417.792535100064},{"$f":"IF('DNSP Inputs General'!$B46='DNSP Inputs General'!$A$41,S$48,IF('DNSP Inputs General'!$B46='DNSP Inputs General'!$A$42,S$49,S$50))*'DNSP Inputs General'!$D46*$C60","v":1417.792535100064},{"$f":"IF('DNSP Inputs General'!$B46='DNSP Inputs General'!$A$41,T$48,IF('DNSP Inputs General'!$B46='DNSP Inputs General'!$A$42,T$49,T$50))*'DNSP Inputs General'!$D46*$C60","v":1417.792535100064},{"$f":"IF('DNSP Inputs General'!$B46='DNSP Inputs General'!$A$41,U$48,IF('DNSP Inputs General'!$B46='DNSP Inputs General'!$A$42,U$49,U$50))*'DNSP Inputs General'!$D46*$C60","v":1417.792535100064}]
[{"$f":"'DNSP Inputs General'!A$47","v":"Mercury vapour 125 watt"},null,1385.3608933531543,null,{"$f":"IF('DNSP Inputs General'!$B47='DNSP Inputs General'!$A$41,E$48,IF('DNSP Inputs General'!$B47='DNSP Inputs General'!$A$42,E$49,E$50))*'DNSP Inputs General'!$D47*$C61","v":76426.882939550764},{"$f":"IF('DNSP Inputs General'!$B47='DNSP Inputs General'!$A$41,F$48,IF('DNSP Inputs General'!$B47='DNSP Inputs General'!$A$42,F$49,F$50))*'DNSP Inputs General'!$D47*$C61","v":4245.937941086152},{"$f":"IF('DNSP Inputs General'!$B47='DNSP Inputs General'!$A$41,G$48,IF('DNSP Inputs General'!$B47='DNSP Inputs General'!$A$42,G$49,G$50))*'DNSP Inputs General'!$D47*$C61","v":4245.937941086152},{"$f":"IF('DNSP Inputs General'!$B47='DNSP Inputs General'!$A$41,H$48,IF('DNSP Inputs General'!$B47='DNSP Inputs General'!$A$42,H$49,H$50))*'DNSP Inputs General'!$D47*$C61","v":4245.937941086152},{"$f":"IF('DNSP Inputs General'!$B47='DNSP Inputs General'!$A$41,I$48,IF('DNSP Inputs General'!$B47='DNSP Inputs General'!$A$42,I$49,I$50))*'DNSP Inputs General'!$D47*$C61","v":4245.937941086152},{"$f":"IF('DNSP Inputs General'!$B47='DNSP Inputs General'!$A$41,J$48,IF('DNSP Inputs General'!$B47='DNSP Inputs General'!$A$42,J$49,J$50))*'DNSP Inputs General'!$D47*$C61","v":4245.937941086152},{"$f":"IF('DNSP Inputs General'!$B47='DNSP Inputs General'!$A$41,K$48,IF('DNSP Inputs General'!$B47='DNSP Inputs General'!$A$42,K$49,K$50))*'DNSP Inputs General'!$D47*$C61","v":4245.937941086152},{"$f":"IF('DNSP Inputs General'!$B47='DNSP Inputs General'!$A$41,L$48,IF('DNSP Inputs General'!$B47='DNSP Inputs General'!$A$42,L$49,L$50))*'DNSP Inputs General'!$D47*$C61","v":4245.937941086152},{"$f":"IF('DNSP Inputs General'!$B47='DNSP Inputs General'!$A$41,M$48,IF('DNSP Inputs General'!$B47='DNSP Inputs General'!$A$42,M$49,M$50))*'DNSP Inputs General'!$D47*$C61","v":4245.937941086152},{"$f":"IF('DNSP Inputs General'!$B47='DNSP Inputs General'!$A$41,N$48,IF('DNSP Inputs General'!$B47='DNSP Inputs General'!$A$42,N$49,N$50))*'DNSP Inputs General'!$D47*$C61","v":4245.937941086152},{"$f":"IF('DNSP Inputs General'!$B47='DNSP Inputs General'!$A$41,O$48,IF('DNSP Inputs General'!$B47='DNSP Inputs General'!$A$42,O$49,O$50))*'DNSP Inputs General'!$D47*$C61","v":4245.937941086152},{"$f":"IF('DNSP Inputs General'!$B47='DNSP Inputs General'!$A$41,P$48,IF('DNSP Inputs General'!$B47='DNSP Inputs General'!$A$42,P$49,P$50))*'DNSP Inputs General'!$D47*$C61","v":4245.937941086152},{"$f":"IF('DNSP Inputs General'!$B47='DNSP Inputs General'!$A$41,Q$48,IF('DNSP Inputs General'!$B47='DNSP Inputs General'!$A$42,Q$49,Q$50))*'DNSP Inputs General'!$D47*$C61","v":4245.937941086152},{"$f":"IF('DNSP Inputs General'!$B47='DNSP Inputs General'!$A$41,R$48,IF('DNSP Inputs General'!$B47='DNSP Inputs General'!$A$42,R$49,R$50))*'DNSP Inputs General'!$D47*$C61","v":4245.937941086152},{"$f":"IF('DNSP Inputs General'!$B47='DNSP Inputs General'!$A$41,S$48,IF('DNSP Inputs General'!$B47='DNSP Inputs General'!$A$42,S$49,S$50))*'DNSP Inputs General'!$D47*$C61","v":4245.937941086152},{"$f":"IF('DNSP Inputs General'!$B47='DNSP Inputs General'!$A$41,T$48,IF('DNSP Inputs General'!$B47='DNSP Inputs General'!$A$42,T$49,T$50))*'DNSP Inputs General'!$D47*$C61","v":4245.937941086152},{"$f":"IF('DNSP Inputs General'!$B47='DNSP Inputs General'!$A$41,U$48,IF('DNSP Inputs General'!$B47='DNSP Inputs General'!$A$42,U$49,U$50))*'DNSP Inputs General'!$D47*$C61","v":4245.937941086152}]
[{"$f":"'DNSP Inputs General'!A$48","v":"Mercury vapour 250 watt"},null,973.77637170719959,null,{"$f":"IF('DNSP Inputs General'!$B48='DNSP Inputs General'!$A$41,E$48,IF('DNSP Inputs General'!$B48='DNSP Inputs General'!$A$42,E$49,E$50))*'DNSP Inputs General'!$D48*$C62","v":33666.460602663552},{"$f":"IF('DNSP Inputs General'!$B48='DNSP Inputs General'!$A$41,F$48,IF('DNSP Inputs General'!$B48='DNSP Inputs General'!$A$42,F$49,F$50))*'DNSP Inputs General'!$D48*$C62","v":1870.3589223701972},{"$f":"IF('DNSP Inputs General'!$B48='DNSP Inputs General'!$A$41,G$48,IF('DNSP Inputs General'!$B48='DNSP Inputs General'!$A$42,G$49,G$50))*'DNSP Inputs General'!$D48*$C62","v":1870.3589223701972},{"$f":"IF('DNSP Inputs General'!$B48='DNSP Inputs General'!$A$41,H$48,IF('DNSP Inputs General'!$B48='DNSP Inputs General'!$A$42,H$49,H$50))*'DNSP Inputs General'!$D48*$C62","v":1870.3589223701972},{"$f":"IF('DNSP Inputs General'!$B48='DNSP Inputs General'!$A$41,I$48,IF('DNSP Inputs General'!$B48='DNSP Inputs General'!$A$42,I$49,I$50))*'DNSP Inputs General'!$D48*$C62","v":1870.3589223701972},{"$f":"IF('DNSP Inputs General'!$B48='DNSP Inputs General'!$A$41,J$48,IF('DNSP Inputs General'!$B48='DNSP Inputs General'!$A$42,J$49,J$50))*'DNSP Inputs General'!$D48*$C62","v":1870.3589223701972},{"$f":"IF('DNSP Inputs General'!$B48='DNSP Inputs General'!$A$41,K$48,IF('DNSP Inputs General'!$B48='DNSP Inputs General'!$A$42,K$49,K$50))*'DNSP Inputs General'!$D48*$C62","v":1870.3589223701972},{"$f":"IF('DNSP Inputs General'!$B48='DNSP Inputs General'!$A$41,L$48,IF('DNSP Inputs General'!$B48='DNSP Inputs General'!$A$42,L$49,L$50))*'DNSP Inputs General'!$D48*$C62","v":1870.3589223701972},{"$f":"IF('DNSP Inputs General'!$B48='DNSP Inputs General'!$A$41,M$48,IF('DNSP Inputs General'!$B48='DNSP Inputs General'!$A$42,M$49,M$50))*'DNSP Inputs General'!$D48*$C62","v":1870.3589223701972},{"$f":"IF('DNSP Inputs General'!$B48='DNSP Inputs General'!$A$41,N$48,IF('DNSP Inputs General'!$B48='DNSP Inputs General'!$A$42,N$49,N$50))*'DNSP Inputs General'!$D48*$C62","v":1870.3589223701972},{"$f":"IF('DNSP Inputs General'!$B48='DNSP Inputs General'!$A$41,O$48,IF('DNSP Inputs General'!$B48='DNSP Inputs General'!$A$42,O$49,O$50))*'DNSP Inputs General'!$D48*$C62","v":1870.3589223701972},{"$f":"IF('DNSP Inputs General'!$B48='DNSP Inputs General'!$A$41,P$48,IF('DNSP Inputs General'!$B48='DNSP Inputs General'!$A$42,P$49,P$50))*'DNSP Inputs General'!$D48*$C62","v":1870.3589223701972},{"$f":"IF('DNSP Inputs General'!$B48='DNSP Inputs General'!$A$41,Q$48,IF('DNSP Inputs General'!$B48='DNSP Inputs General'!$A$42,Q$49,Q$50))*'DNSP Inputs General'!$D48*$C62","v":1870.3589223701972},{"$f":"IF('DNSP Inputs General'!$B48='DNSP Inputs General'!$A$41,R$48,IF('DNSP Inputs General'!$B48='DNSP Inputs General'!$A$42,R$49,R$50))*'DNSP Inputs General'!$D48*$C62","v":1870.3589223701972},{"$f":"IF('DNSP Inputs General'!$B48='DNSP Inputs General'!$A$41,S$48,IF('DNSP Inputs General'!$B48='DNSP Inputs General'!$A$42,S$49,S$50))*'DNSP Inputs General'!$D48*$C62","v":1870.3589223701972},{"$f":"IF('DNSP Inputs General'!$B48='DNSP Inputs General'!$A$41,T$48,IF('DNSP Inputs General'!$B48='DNSP Inputs General'!$A$42,T$49,T$50))*'DNSP Inputs General'!$D48*$C62","v":1870.3589223701972},{"$f":"IF('DNSP Inputs General'!$B48='DNSP Inputs General'!$A$41,U$48,IF('DNSP Inputs General'!$B48='DNSP Inputs General'!$A$42,U$49,U$50))*'DNSP Inputs General'!$D48*$C62","v":1870.3589223701972}]
[{"$f":"'DNSP Inputs General'!A$49","v":"Mercury vapour 400 watt"},null,179.2766766608415,null,{"$f":"IF('DNSP Inputs General'!$B49='DNSP Inputs General'!$A$41,E$48,IF('DNSP Inputs General'!$B49='DNSP Inputs General'!$A$42,E$49,E$50))*'DNSP Inputs General'!$D49*$C63","v":7176.80425658275},{"$f":"IF('DNSP Inputs General'!$B49='DNSP Inputs General'!$A$41,F$48,IF('DNSP Inputs General'!$B49='DNSP Inputs General'!$A$42,F$49,F$50))*'DNSP Inputs General'!$D49*$C63","v":398.71134758793056},{"$f":"IF('DNSP Inputs General'!$B49='DNSP Inputs General'!$A$41,G$48,IF('DNSP Inputs General'!$B49='DNSP Inputs General'!$A$42,G$49,G$50))*'DNSP Inputs General'!$D49*$C63","v":398.71134758793056},{"$f":"IF('DNSP Inputs General'!$B49='DNSP Inputs General'!$A$41,H$48,IF('DNSP Inputs General'!$B49='DNSP Inputs General'!$A$42,H$49,H$50))*'DNSP Inputs General'!$D49*$C63","v":398.71134758793056},{"$f":"IF('DNSP Inputs General'!$B49='DNSP Inputs General'!$A$41,I$48,IF('DNSP Inputs General'!$B49='DNSP Inputs General'!$A$42,I$49,I$50))*'DNSP Inputs General'!$D49*$C63","v":398.71134758793056},{"$f":"IF('DNSP Inputs General'!$B49='DNSP Inputs General'!$A$41,J$48,IF('DNSP Inputs General'!$B49='DNSP Inputs General'!$A$42,J$49,J$50))*'DNSP Inputs General'!$D49*$C63","v":398.71134758793056},{"$f":"IF('DNSP Inputs General'!$B49='DNSP Inputs General'!$A$41,K$48,IF('DNSP Inputs General'!$B49='DNSP Inputs General'!$A$42,K$49,K$50))*'DNSP Inputs General'!$D49*$C63","v":398.71134758793056},{"$f":"IF('DNSP Inputs General'!$B49='DNSP Inputs General'!$A$41,L$48,IF('DNSP Inputs General'!$B49='DNSP Inputs General'!$A$42,L$49,L$50))*'DNSP Inputs General'!$D49*$C63","v":398.71134758793056},{"$f":"IF('DNSP Inputs General'!$B49='DNSP Inputs General'!$A$41,M$48,IF('DNSP Inputs General'!$B49='DNSP Inputs General'!$A$42,M$49,M$50))*'DNSP Inputs General'!$D49*$C63","v":398.71134758793056},{"$f":"IF('DNSP Inputs General'!$B49='DNSP Inputs General'!$A$41,N$48,IF('DNSP Inputs General'!$B49='DNSP Inputs General'!$A$42,N$49,N$50))*'DNSP Inputs General'!$D49*$C63","v":398.71134758793056},{"$f":"IF('DNSP Inputs General'!$B49='DNSP Inputs General'!$A$41,O$48,IF('DNSP Inputs General'!$B49='DNSP Inputs General'!$A$42,O$49,O$50))*'DNSP Inputs General'!$D49*$C63","v":398.71134758793056},{"$f":"IF('DNSP Inputs General'!$B49='DNSP Inputs General'!$A$41,P$48,IF('DNSP Inputs General'!$B49='DNSP Inputs General'!$A$42,P$49,P$50))*'DNSP Inputs General'!$D49*$C63","v":398.71134758793056},{"$f":"IF('DNSP Inputs General'!$B49='DNSP Inputs General'!$A$41,Q$48,IF('DNSP Inputs General'!$B49='DNSP Inputs General'!$A$42,Q$49,Q$50))*'DNSP Inputs General'!$D49*$C63","v":398.71134758793056},{"$f":"IF('DNSP Inputs General'!$B49='DNSP Inputs General'!$A$41,R$48,IF('DNSP Inputs General'!$B49='DNSP Inputs General'!$A$42,R$49,R$50))*'DNSP Inputs General'!$D49*$C63","v":398.71134758793056},{"$f":"IF('DNSP Inputs General'!$B49='DNSP Inputs General'!$A$41,S$48,IF('DNSP Inputs General'!$B49='DNSP Inputs General'!$A$42,S$49,S$50))*'DNSP Inputs General'!$D49*$C63","v":398.71134758793056},{"$f":"IF('DNSP Inputs General'!$B49='DNSP Inputs General'!$A$41,T$48,IF('DNSP Inputs General'!$B49='DNSP Inputs General'!$A$42,T$49,T$50))*'DNSP Inputs General'!$D49*$C63","v":398.71134758793056},{"$f":"IF('DNSP Inputs General'!$B49='DNSP Inputs General'!$A$41,U$48,IF('DNSP Inputs General'!$B49='DNSP Inputs General'!$A$42,U$49,U$50))*'DNSP Inputs General'!$D49*$C63","v":398.71134758793056}]
[{"$f":"'DNSP Inputs General'!A$50","v":"Mercury vapour 700 watt"},null,4.2749398666917422,null,{"$f":"IF('DNSP Inputs General'!$B50='DNSP Inputs General'!$A$41,E$48,IF('DNSP Inputs General'!$B50='DNSP Inputs General'!$A$42,E$49,E$50))*'DNSP Inputs General'!$D50*$C64","v":258.6463102505993},{"$f":"IF('DNSP Inputs General'!$B50='DNSP Inputs General'!$A$41,F$48,IF('DNSP Inputs General'!$B50='DNSP Inputs General'!$A$42,F$49,F$50))*'DNSP Inputs General'!$D50*$C64","v":14.36923945836663},{"$f":"IF('DNSP Inputs General'!$B50='DNSP Inputs General'!$A$41,G$48,IF('DNSP Inputs General'!$B50='DNSP Inputs General'!$A$42,G$49,G$50))*'DNSP Inputs General'!$D50*$C64","v":14.36923945836663},{"$f":"IF('DNSP Inputs General'!$B50='DNSP Inputs General'!$A$41,H$48,IF('DNSP Inputs General'!$B50='DNSP Inputs General'!$A$42,H$49,H$50))*'DNSP Inputs General'!$D50*$C64","v":14.36923945836663},{"$f":"IF('DNSP Inputs General'!$B50='DNSP Inputs General'!$A$41,I$48,IF('DNSP Inputs General'!$B50='DNSP Inputs General'!$A$42,I$49,I$50))*'DNSP Inputs General'!$D50*$C64","v":14.36923945836663},{"$f":"IF('DNSP Inputs General'!$B50='DNSP Inputs General'!$A$41,J$48,IF('DNSP Inputs General'!$B50='DNSP Inputs General'!$A$42,J$49,J$50))*'DNSP Inputs General'!$D50*$C64","v":14.36923945836663},{"$f":"IF('DNSP Inputs General'!$B50='DNSP Inputs General'!$A$41,K$48,IF('DNSP Inputs General'!$B50='DNSP Inputs General'!$A$42,K$49,K$50))*'DNSP Inputs General'!$D50*$C64","v":14.36923945836663},{"$f":"IF('DNSP Inputs General'!$B50='DNSP Inputs General'!$A$41,L$48,IF('DNSP Inputs General'!$B50='DNSP Inputs General'!$A$42,L$49,L$50))*'DNSP Inputs General'!$D50*$C64","v":14.36923945836663},{"$f":"IF('DNSP Inputs General'!$B50='DNSP Inputs General'!$A$41,M$48,IF('DNSP Inputs General'!$B50='DNSP Inputs General'!$A$42,M$49,M$50))*'DNSP Inputs General'!$D50*$C64","v":14.36923945836663},{"$f":"IF('DNSP Inputs General'!$B50='DNSP Inputs General'!$A$41,N$48,IF('DNSP Inputs General'!$B50='DNSP Inputs General'!$A$42,N$49,N$50))*'DNSP Inputs General'!$D50*$C64","v":14.36923945836663},{"$f":"IF('DNSP Inputs General'!$B50='DNSP Inputs General'!$A$41,O$48,IF('DNSP Inputs General'!$B50='DNSP Inputs General'!$A$42,O$49,O$50))*'DNSP Inputs General'!$D50*$C64","v":14.36923945836663},{"$f":"IF('DNSP Inputs General'!$B50='DNSP Inputs General'!$A$41,P$48,IF('DNSP Inputs General'!$B50='DNSP Inputs General'!$A$42,P$49,P$50))*'DNSP Inputs General'!$D50*$C64","v":14.36923945836663},{"$f":"IF('DNSP Inputs General'!$B50='DNSP Inputs General'!$A$41,Q$48,IF('DNSP Inputs General'!$B50='DNSP Inputs General'!$A$42,Q$49,Q$50))*'DNSP Inputs General'!$D50*$C64","v":14.36923945836663},{"$f":"IF('DNSP Inputs General'!$B50='DNSP Inputs General'!$A$41,R$48,IF('DNSP Inputs General'!$B50='DNSP Inputs General'!$A$42,R$49,R$50))*'DNSP Inputs General'!$D50*$C64","v":14.36923945836663},{"$f":"IF('DNSP Inputs General'!$B50='DNSP Inputs General'!$A$41,S$48,IF('DNSP Inputs General'!$B50='DNSP Inputs General'!$A$42,S$49,S$50))*'DNSP Inputs General'!$D50*$C64","v":14.36923945836663},{"$f":"IF('DNSP Inputs General'!$B50='DNSP Inputs General'!$A$41,T$48,IF('DNSP Inputs General'!$B50='DNSP Inputs General'!$A$42,T$49,T$50))*'DNSP Inputs General'!$D50*$C64","v":14.36923945836663},{"$f":"IF('DNSP Inputs General'!$B50='DNSP Inputs General'!$A$41,U$48,IF('DNSP Inputs General'!$B50='DNSP Inputs General'!$A$42,U$49,U$50))*'DNSP Inputs General'!$D50*$C64","v":14.36923945836663}]
[{"$f":"'DNSP Inputs General'!A$51","v":"Sodium low pressure 90 watt"},null,1,null,{"$f":"IF('DNSP Inputs General'!$B51='DNSP Inputs General'!$A$41,E$48,IF('DNSP Inputs General'!$B51='DNSP Inputs General'!$A$42,E$49,E$50))*'DNSP Inputs General'!$D51*$C65","v":56.240267752673645},{"$f":"IF('DNSP Inputs General'!$B51='DNSP Inputs General'!$A$41,F$48,IF('DNSP Inputs General'!$B51='DNSP Inputs General'!$A$42,F$49,F$50))*'DNSP Inputs General'!$D51*$C65","v":3.1244593195929808},{"$f":"IF('DNSP Inputs General'!$B51='DNSP Inputs General'!$A$41,G$48,IF('DNSP Inputs General'!$B51='DNSP Inputs General'!$A$42,G$49,G$50))*'DNSP Inputs General'!$D51*$C65","v":3.1244593195929808},{"$f":"IF('DNSP Inputs General'!$B51='DNSP Inputs General'!$A$41,H$48,IF('DNSP Inputs General'!$B51='DNSP Inputs General'!$A$42,H$49,H$50))*'DNSP Inputs General'!$D51*$C65","v":3.1244593195929808},{"$f":"IF('DNSP Inputs General'!$B51='DNSP Inputs General'!$A$41,I$48,IF('DNSP Inputs General'!$B51='DNSP Inputs General'!$A$42,I$49,I$50))*'DNSP Inputs General'!$D51*$C65","v":3.1244593195929808},{"$f":"IF('DNSP Inputs General'!$B51='DNSP Inputs General'!$A$41,J$48,IF('DNSP Inputs General'!$B51='DNSP Inputs General'!$A$42,J$49,J$50))*'DNSP Inputs General'!$D51*$C65","v":3.1244593195929808},{"$f":"IF('DNSP Inputs General'!$B51='DNSP Inputs General'!$A$41,K$48,IF('DNSP Inputs General'!$B51='DNSP Inputs General'!$A$42,K$49,K$50))*'DNSP Inputs General'!$D51*$C65","v":3.1244593195929808},{"$f":"IF('DNSP Inputs General'!$B51='DNSP Inputs General'!$A$41,L$48,IF('DNSP Inputs General'!$B51='DNSP Inputs General'!$A$42,L$49,L$50))*'DNSP Inputs General'!$D51*$C65","v":3.1244593195929808},{"$f":"IF('DNSP Inputs General'!$B51='DNSP Inputs General'!$A$41,M$48,IF('DNSP Inputs General'!$B51='DNSP Inputs General'!$A$42,M$49,M$50))*'DNSP Inputs General'!$D51*$C65","v":3.1244593195929808},{"$f":"IF('DNSP Inputs General'!$B51='DNSP Inputs General'!$A$41,N$48,IF('DNSP Inputs General'!$B51='DNSP Inputs General'!$A$42,N$49,N$50))*'DNSP Inputs General'!$D51*$C65","v":3.1244593195929808},{"$f":"IF('DNSP Inputs General'!$B51='DNSP Inputs General'!$A$41,O$48,IF('DNSP Inputs General'!$B51='DNSP Inputs General'!$A$42,O$49,O$50))*'DNSP Inputs General'!$D51*$C65","v":3.1244593195929808},{"$f":"IF('DNSP Inputs General'!$B51='DNSP Inputs General'!$A$41,P$48,IF('DNSP Inputs General'!$B51='DNSP Inputs General'!$A$42,P$49,P$50))*'DNSP Inputs General'!$D51*$C65","v":3.1244593195929808},{"$f":"IF('DNSP Inputs General'!$B51='DNSP Inputs General'!$A$41,Q$48,IF('DNSP Inputs General'!$B51='DNSP Inputs General'!$A$42,Q$49,Q$50))*'DNSP Inputs General'!$D51*$C65","v":3.1244593195929808},{"$f":"IF('DNSP Inputs General'!$B51='DNSP Inputs General'!$A$41,R$48,IF('DNSP Inputs General'!$B51='DNSP Inputs General'!$A$42,R$49,R$50))*'DNSP Inputs General'!$D51*$C65","v":3.1244593195929808},{"$f":"IF('DNSP Inputs General'!$B51='DNSP Inputs General'!$A$41,S$48,IF('DNSP Inputs General'!$B51='DNSP Inputs General'!$A$42,S$49,S$50))*'DNSP Inputs General'!$D51*$C65","v":3.1244593195929808},{"$f":"IF('DNSP Inputs General'!$B51='DNSP Inputs General'!$A$41,T$48,IF('DNSP Inputs General'!$B51='DNSP Inputs General'!$A$42,T$49,T$50))*'DNSP Inputs General'!$D51*$C65","v":3.1244593195929808},{"$f":"IF('DNSP Inputs General'!$B51='DNSP Inputs General'!$A$41,U$48,IF('DNSP Inputs General'!$B51='DNSP Inputs General'!$A$42,U$49,U$50))*'DNSP Inputs General'!$D51*$C65","v":3.1244593195929808}]
[{"$f":"'DNSP Inputs General'!A$52","v":"Sodium low pressure 180 watt"},null,0,null,{"$f":"IF('DNSP Inputs General'!$B52='DNSP Inputs General'!$A$41,E$48,IF('DNSP Inputs General'!$B52='DNSP Inputs General'!$A$42,E$49,E$50))*'DNSP Inputs General'!$D52*$C66","v":0},{"$f":"IF('DNSP Inputs General'!$B52='DNSP Inputs General'!$A$41,F$48,IF('DNSP Inputs General'!$B52='DNSP Inputs General'!$A$42,F$49,F$50))*'DNSP Inputs General'!$D52*$C66","v":0},{"$f":"IF('DNSP Inputs General'!$B52='DNSP Inputs General'!$A$41,G$48,IF('DNSP Inputs General'!$B52='DNSP Inputs General'!$A$42,G$49,G$50))*'DNSP Inputs General'!$D52*$C66","v":0},{"$f":"IF('DNSP Inputs General'!$B52='DNSP Inputs General'!$A$41,H$48,IF('DNSP Inputs General'!$B52='DNSP Inputs General'!$A$42,H$49,H$50))*'DNSP Inputs General'!$D52*$C66","v":0},{"$f":"IF('DNSP Inputs General'!$B52='DNSP Inputs General'!$A$41,I$48,IF('DNSP Inputs General'!$B52='DNSP Inputs General'!$A$42,I$49,I$50))*'DNSP Inputs General'!$D52*$C66","v":0},{"$f":"IF('DNSP Inputs General'!$B52='DNSP Inputs General'!$A$41,J$48,IF('DNSP Inputs General'!$B52='DNSP Inputs General'!$A$42,J$49,J$50))*'DNSP Inputs General'!$D52*$C66","v":0},{"$f":"IF('DNSP Inputs General'!$B52='DNSP Inputs General'!$A$41,K$48,IF('DNSP Inputs General'!$B52='DNSP Inputs General'!$A$42,K$49,K$50))*'DNSP Inputs General'!$D52*$C66","v":0},{"$f":"IF('DNSP Inputs General'!$B52='DNSP Inputs General'!$A$41,L$48,IF('DNSP Inputs General'!$B52='DNSP Inputs General'!$A$42,L$49,L$50))*'DNSP Inputs General'!$D52*$C66","v":0},{"$f":"IF('DNSP Inputs General'!$B52='DNSP Inputs General'!$A$41,M$48,IF('DNSP Inputs General'!$B52='DNSP Inputs General'!$A$42,M$49,M$50))*'DNSP Inputs General'!$D52*$C66","v":0},{"$f":"IF('DNSP Inputs General'!$B52='DNSP Inputs General'!$A$41,N$48,IF('DNSP Inputs General'!$B52='DNSP Inputs General'!$A$42,N$49,N$50))*'DNSP Inputs General'!$D52*$C66","v":0},{"$f":"IF('DNSP Inputs General'!$B52='DNSP Inputs General'!$A$41,O$48,IF('DNSP Inputs General'!$B52='DNSP Inputs General'!$A$42,O$49,O$50))*'DNSP Inputs General'!$D52*$C66","v":0},{"$f":"IF('DNSP Inputs General'!$B52='DNSP Inputs General'!$A$41,P$48,IF('DNSP Inputs General'!$B52='DNSP Inputs General'!$A$42,P$49,P$50))*'DNSP Inputs General'!$D52*$C66","v":0},{"$f":"IF('DNSP Inputs General'!$B52='DNSP Inputs General'!$A$41,Q$48,IF('DNSP Inputs General'!$B52='DNSP Inputs General'!$A$42,Q$49,Q$50))*'DNSP Inputs General'!$D52*$C66","v":0},{"$f":"IF('DNSP Inputs General'!$B52='DNSP Inputs General'!$A$41,R$48,IF('DNSP Inputs General'!$B52='DNSP Inputs General'!$A$42,R$49,R$50))*'DNSP Inputs General'!$D52*$C66","v":0},{"$f":"IF('DNSP Inputs General'!$B52='DNSP Inputs General'!$A$41,S$48,IF('DNSP Inputs General'!$B52='DNSP Inputs General'!$A$42,S$49,S$50))*'DNSP Inputs General'!$D52*$C66","v":0},{"$f":"IF('DNSP Inputs General'!$B52='DNSP Inputs General'!$A$41,T$48,IF('DNSP Inputs General'!$B52='DNSP Inputs General'!$A$42,T$49,T$50))*'DNSP Inputs General'!$D52*$C66","v":0},{"$f":"IF('DNSP Inputs General'!$B52='DNSP Inputs General'!$A$41,U$48,IF('DNSP Inputs General'!$B52='DNSP Inputs General'!$A$42,U$49,U$50))*'DNSP Inputs General'!$D52*$C66","v":0}]
[{"$f":"'DNSP Inputs General'!A$53","v":"Sodium high pressure 400 watt"},null,779.07054546637573,null,{"$f":"IF('DNSP Inputs General'!$B53='DNSP Inputs General'!$A$41,E$48,IF('DNSP Inputs General'!$B53='DNSP Inputs General'!$A$42,E$49,E$50))*'DNSP Inputs General'!$D53*$C67","v":47136.036597805534},{"$f":"IF('DNSP Inputs General'!$B53='DNSP Inputs General'!$A$41,F$48,IF('DNSP Inputs General'!$B53='DNSP Inputs General'!$A$42,F$49,F$50))*'DNSP Inputs General'!$D53*$C67","v":2618.6686998780851},{"$f":"IF('DNSP Inputs General'!$B53='DNSP Inputs General'!$A$41,G$48,IF('DNSP Inputs General'!$B53='DNSP Inputs General'!$A$42,G$49,G$50))*'DNSP Inputs General'!$D53*$C67","v":2618.6686998780851},{"$f":"IF('DNSP Inputs General'!$B53='DNSP Inputs General'!$A$41,H$48,IF('DNSP Inputs General'!$B53='DNSP Inputs General'!$A$42,H$49,H$50))*'DNSP Inputs General'!$D53*$C67","v":2618.6686998780851},{"$f":"IF('DNSP Inputs General'!$B53='DNSP Inputs General'!$A$41,I$48,IF('DNSP Inputs General'!$B53='DNSP Inputs General'!$A$42,I$49,I$50))*'DNSP Inputs General'!$D53*$C67","v":2618.6686998780851},{"$f":"IF('DNSP Inputs General'!$B53='DNSP Inputs General'!$A$41,J$48,IF('DNSP Inputs General'!$B53='DNSP Inputs General'!$A$42,J$49,J$50))*'DNSP Inputs General'!$D53*$C67","v":2618.6686998780851},{"$f":"IF('DNSP Inputs General'!$B53='DNSP Inputs General'!$A$41,K$48,IF('DNSP Inputs General'!$B53='DNSP Inputs General'!$A$42,K$49,K$50))*'DNSP Inputs General'!$D53*$C67","v":2618.6686998780851},{"$f":"IF('DNSP Inputs General'!$B53='DNSP Inputs General'!$A$41,L$48,IF('DNSP Inputs General'!$B53='DNSP Inputs General'!$A$42,L$49,L$50))*'DNSP Inputs General'!$D53*$C67","v":2618.6686998780851},{"$f":"IF('DNSP Inputs General'!$B53='DNSP Inputs General'!$A$41,M$48,IF('DNSP Inputs General'!$B53='DNSP Inputs General'!$A$42,M$49,M$50))*'DNSP Inputs General'!$D53*$C67","v":2618.6686998780851},{"$f":"IF('DNSP Inputs General'!$B53='DNSP Inputs General'!$A$41,N$48,IF('DNSP Inputs General'!$B53='DNSP Inputs General'!$A$42,N$49,N$50))*'DNSP Inputs General'!$D53*$C67","v":2618.6686998780851},{"$f":"IF('DNSP Inputs General'!$B53='DNSP Inputs General'!$A$41,O$48,IF('DNSP Inputs General'!$B53='DNSP Inputs General'!$A$42,O$49,O$50))*'DNSP Inputs General'!$D53*$C67","v":2618.6686998780851},{"$f":"IF('DNSP Inputs General'!$B53='DNSP Inputs General'!$A$41,P$48,IF('DNSP Inputs General'!$B53='DNSP Inputs General'!$A$42,P$49,P$50))*'DNSP Inputs General'!$D53*$C67","v":2618.6686998780851},{"$f":"IF('DNSP Inputs General'!$B53='DNSP Inputs General'!$A$41,Q$48,IF('DNSP Inputs General'!$B53='DNSP Inputs General'!$A$42,Q$49,Q$50))*'DNSP Inputs General'!$D53*$C67","v":2618.6686998780851},{"$f":"IF('DNSP Inputs General'!$B53='DNSP Inputs General'!$A$41,R$48,IF('DNSP Inputs General'!$B53='DNSP Inputs General'!$A$42,R$49,R$50))*'DNSP Inputs General'!$D53*$C67","v":2618.6686998780851},{"$f":"IF('DNSP Inputs General'!$B53='DNSP Inputs General'!$A$41,S$48,IF('DNSP Inputs General'!$B53='DNSP Inputs General'!$A$42,S$49,S$50))*'DNSP Inputs General'!$D53*$C67","v":2618.6686998780851},{"$f":"IF('DNSP Inputs General'!$B53='DNSP Inputs General'!$A$41,T$48,IF('DNSP Inputs General'!$B53='DNSP Inputs General'!$A$42,T$49,T$50))*'DNSP Inputs General'!$D53*$C67","v":2618.6686998780851},{"$f":"IF('DNSP Inputs General'!$B53='DNSP Inputs General'!$A$41,U$48,IF('DNSP Inputs General'!$B53='DNSP Inputs General'!$A$42,U$49,U$50))*'DNSP Inputs General'!$D53*$C67","v":2618.6686998780851}]
[{"$f":"'DNSP Inputs General'!A$54","v":"Incandescent 100 watt"},null,13,null,{"$f":"IF('DNSP Inputs General'!$B54='DNSP Inputs General'!$A$41,E$48,IF('DNSP Inputs General'!$B54='DNSP Inputs General'!$A$42,E$49,E$50))*'DNSP Inputs General'!$D54*$C68","v":1476.8541340824154},{"$f":"IF('DNSP Inputs General'!$B54='DNSP Inputs General'!$A$41,F$48,IF('DNSP Inputs General'!$B54='DNSP Inputs General'!$A$42,F$49,F$50))*'DNSP Inputs General'!$D54*$C68","v":82.047451893467496},{"$f":"IF('DNSP Inputs General'!$B54='DNSP Inputs General'!$A$41,G$48,IF('DNSP Inputs General'!$B54='DNSP Inputs General'!$A$42,G$49,G$50))*'DNSP Inputs General'!$D54*$C68","v":82.047451893467496},{"$f":"IF('DNSP Inputs General'!$B54='DNSP Inputs General'!$A$41,H$48,IF('DNSP Inputs General'!$B54='DNSP Inputs General'!$A$42,H$49,H$50))*'DNSP Inputs General'!$D54*$C68","v":82.047451893467496},{"$f":"IF('DNSP Inputs General'!$B54='DNSP Inputs General'!$A$41,I$48,IF('DNSP Inputs General'!$B54='DNSP Inputs General'!$A$42,I$49,I$50))*'DNSP Inputs General'!$D54*$C68","v":82.047451893467496},{"$f":"IF('DNSP Inputs General'!$B54='DNSP Inputs General'!$A$41,J$48,IF('DNSP Inputs General'!$B54='DNSP Inputs General'!$A$42,J$49,J$50))*'DNSP Inputs General'!$D54*$C68","v":82.047451893467496},{"$f":"IF('DNSP Inputs General'!$B54='DNSP Inputs General'!$A$41,K$48,IF('DNSP Inputs General'!$B54='DNSP Inputs General'!$A$42,K$49,K$50))*'DNSP Inputs General'!$D54*$C68","v":82.047451893467496},{"$f":"IF('DNSP Inputs General'!$B54='DNSP Inputs General'!$A$41,L$48,IF('DNSP Inputs General'!$B54='DNSP Inputs General'!$A$42,L$49,L$50))*'DNSP Inputs General'!$D54*$C68","v":82.047451893467496},{"$f":"IF('DNSP Inputs General'!$B54='DNSP Inputs General'!$A$41,M$48,IF('DNSP Inputs General'!$B54='DNSP Inputs General'!$A$42,M$49,M$50))*'DNSP Inputs General'!$D54*$C68","v":82.047451893467496},{"$f":"IF('DNSP Inputs General'!$B54='DNSP Inputs General'!$A$41,N$48,IF('DNSP Inputs General'!$B54='DNSP Inputs General'!$A$42,N$49,N$50))*'DNSP Inputs General'!$D54*$C68","v":82.047451893467496},{"$f":"IF('DNSP Inputs General'!$B54='DNSP Inputs General'!$A$41,O$48,IF('DNSP Inputs General'!$B54='DNSP Inputs General'!$A$42,O$49,O$50))*'DNSP Inputs General'!$D54*$C68","v":82.047451893467496},{"$f":"IF('DNSP Inputs General'!$B54='DNSP Inputs General'!$A$41,P$48,IF('DNSP Inputs General'!$B54='DNSP Inputs General'!$A$42,P$49,P$50))*'DNSP Inputs General'!$D54*$C68","v":82.047451893467496},{"$f":"IF('DNSP Inputs General'!$B54='DNSP Inputs General'!$A$41,Q$48,IF('DNSP Inputs General'!$B54='DNSP Inputs General'!$A$42,Q$49,Q$50))*'DNSP Inputs General'!$D54*$C68","v":82.047451893467496},{"$f":"IF('DNSP Inputs General'!$B54='DNSP Inputs General'!$A$41,R$48,IF('DNSP Inputs General'!$B54='DNSP Inputs General'!$A$42,R$49,R$50))*'DNSP Inputs General'!$D54*$C68","v":82.047451893467496},{"$f":"IF('DNSP Inputs General'!$B54='DNSP Inputs General'!$A$41,S$48,IF('DNSP Inputs General'!$B54='DNSP Inputs General'!$A$42,S$49,S$50))*'DNSP Inputs General'!$D54*$C68","v":82.047451893467496},{"$f":"IF('DNSP Inputs General'!$B54='DNSP Inputs General'!$A$41,T$48,IF('DNSP Inputs General'!$B54='DNSP Inputs General'!$A$42,T$49,T$50))*'DNSP Inputs General'!$D54*$C68","v":82.047451893467496},{"$f":"IF('DNSP Inputs General'!$B54='DNSP Inputs General'!$A$41,U$48,IF('DNSP Inputs General'!$B54='DNSP Inputs General'!$A$42,U$49,U$50))*'DNSP Inputs General'!$D54*$C68","v":82.047451893467496}]
[{"$f":"'DNSP Inputs General'!A$55","v":"Incandescent 150 watt"},null,4.3267487109222245,null,{"$f":"IF('DNSP Inputs General'!$B55='DNSP Inputs General'!$A$41,E$48,IF('DNSP Inputs General'!$B55='DNSP Inputs General'!$A$42,E$49,E$50))*'DNSP Inputs General'!$D55*$C69","v":491.53667083548072},{"$f":"IF('DNSP Inputs General'!$B55='DNSP Inputs General'!$A$41,F$48,IF('DNSP Inputs General'!$B55='DNSP Inputs General'!$A$42,F$49,F$50))*'DNSP Inputs General'!$D55*$C69","v":27.307592824193364},{"$f":"IF('DNSP Inputs General'!$B55='DNSP Inputs General'!$A$41,G$48,IF('DNSP Inputs General'!$B55='DNSP Inputs General'!$A$42,G$49,G$50))*'DNSP Inputs General'!$D55*$C69","v":27.307592824193364},{"$f":"IF('DNSP Inputs General'!$B55='DNSP Inputs General'!$A$41,H$48,IF('DNSP Inputs General'!$B55='DNSP Inputs General'!$A$42,H$49,H$50))*'DNSP Inputs General'!$D55*$C69","v":27.307592824193364},{"$f":"IF('DNSP Inputs General'!$B55='DNSP Inputs General'!$A$41,I$48,IF('DNSP Inputs General'!$B55='DNSP Inputs General'!$A$42,I$49,I$50))*'DNSP Inputs General'!$D55*$C69","v":27.307592824193364},{"$f":"IF('DNSP Inputs General'!$B55='DNSP Inputs General'!$A$41,J$48,IF('DNSP Inputs General'!$B55='DNSP Inputs General'!$A$42,J$49,J$50))*'DNSP Inputs General'!$D55*$C69","v":27.307592824193364},{"$f":"IF('DNSP Inputs General'!$B55='DNSP Inputs General'!$A$41,K$48,IF('DNSP Inputs General'!$B55='DNSP Inputs General'!$A$42,K$49,K$50))*'DNSP Inputs General'!$D55*$C69","v":27.307592824193364},{"$f":"IF('DNSP Inputs General'!$B55='DNSP Inputs General'!$A$41,L$48,IF('DNSP Inputs General'!$B55='DNSP Inputs General'!$A$42,L$49,L$50))*'DNSP Inputs General'!$D55*$C69","v":27.307592824193364},{"$f":"IF('DNSP Inputs General'!$B55='DNSP Inputs General'!$A$41,M$48,IF('DNSP Inputs General'!$B55='DNSP Inputs General'!$A$42,M$49,M$50))*'DNSP Inputs General'!$D55*$C69","v":27.307592824193364},{"$f":"IF('DNSP Inputs General'!$B55='DNSP Inputs General'!$A$41,N$48,IF('DNSP Inputs General'!$B55='DNSP Inputs General'!$A$42,N$49,N$50))*'DNSP Inputs General'!$D55*$C69","v":27.307592824193364},{"$f":"IF('DNSP Inputs General'!$B55='DNSP Inputs General'!$A$41,O$48,IF('DNSP Inputs General'!$B55='DNSP Inputs General'!$A$42,O$49,O$50))*'DNSP Inputs General'!$D55*$C69","v":27.307592824193364},{"$f":"IF('DNSP Inputs General'!$B55='DNSP Inputs General'!$A$41,P$48,IF('DNSP Inputs General'!$B55='DNSP Inputs General'!$A$42,P$49,P$50))*'DNSP Inputs General'!$D55*$C69","v":27.307592824193364},{"$f":"IF('DNSP Inputs General'!$B55='DNSP Inputs General'!$A$41,Q$48,IF('DNSP Inputs General'!$B55='DNSP Inputs General'!$A$42,Q$49,Q$50))*'DNSP Inputs General'!$D55*$C69","v":27.307592824193364},{"$f":"IF('DNSP Inputs General'!$B55='DNSP Inputs General'!$A$41,R$48,IF('DNSP Inputs General'!$B55='DNSP Inputs General'!$A$42,R$49,R$50))*'DNSP Inputs General'!$D55*$C69","v":27.307592824193364},{"$f":"IF('DNSP Inputs General'!$B55='DNSP Inputs General'!$A$41,S$48,IF('DNSP Inputs General'!$B55='DNSP Inputs General'!$A$42,S$49,S$50))*'DNSP Inputs General'!$D55*$C69","v":27.307592824193364},{"$f":"IF('DNSP Inputs General'!$B55='DNSP Inputs General'!$A$41,T$48,IF('DNSP Inputs General'!$B55='DNSP Inputs General'!$A$42,T$49,T$50))*'DNSP Inputs General'!$D55*$C69","v":27.307592824193364},{"$f":"IF('DNSP Inputs General'!$B55='DNSP Inputs General'!$A$41,U$48,IF('DNSP Inputs General'!$B55='DNSP Inputs General'!$A$42,U$49,U$50))*'DNSP Inputs General'!$D55*$C69","v":27.307592824193364}]
[{"$f":"'DNSP Inputs General'!A$56","v":"Metal halide 250 watt"},null,332.40957064151957,null,{"$f":"IF('DNSP Inputs General'!$B56='DNSP Inputs General'!$A$41,E$48,IF('DNSP Inputs General'!$B56='DNSP Inputs General'!$A$42,E$49,E$50))*'DNSP Inputs General'!$D56*$C70","v":20111.746976443395},{"$f":"IF('DNSP Inputs General'!$B56='DNSP Inputs General'!$A$41,F$48,IF('DNSP Inputs General'!$B56='DNSP Inputs General'!$A$42,F$49,F$50))*'DNSP Inputs General'!$D56*$C70","v":1117.3192764690775},{"$f":"IF('DNSP Inputs General'!$B56='DNSP Inputs General'!$A$41,G$48,IF('DNSP Inputs General'!$B56='DNSP Inputs General'!$A$42,G$49,G$50))*'DNSP Inputs General'!$D56*$C70","v":1117.3192764690775},{"$f":"IF('DNSP Inputs General'!$B56='DNSP Inputs General'!$A$41,H$48,IF('DNSP Inputs General'!$B56='DNSP Inputs General'!$A$42,H$49,H$50))*'DNSP Inputs General'!$D56*$C70","v":1117.3192764690775},{"$f":"IF('DNSP Inputs General'!$B56='DNSP Inputs General'!$A$41,I$48,IF('DNSP Inputs General'!$B56='DNSP Inputs General'!$A$42,I$49,I$50))*'DNSP Inputs General'!$D56*$C70","v":1117.3192764690775},{"$f":"IF('DNSP Inputs General'!$B56='DNSP Inputs General'!$A$41,J$48,IF('DNSP Inputs General'!$B56='DNSP Inputs General'!$A$42,J$49,J$50))*'DNSP Inputs General'!$D56*$C70","v":1117.3192764690775},{"$f":"IF('DNSP Inputs General'!$B56='DNSP Inputs General'!$A$41,K$48,IF('DNSP Inputs General'!$B56='DNSP Inputs General'!$A$42,K$49,K$50))*'DNSP Inputs General'!$D56*$C70","v":1117.3192764690775},{"$f":"IF('DNSP Inputs General'!$B56='DNSP Inputs General'!$A$41,L$48,IF('DNSP Inputs General'!$B56='DNSP Inputs General'!$A$42,L$49,L$50))*'DNSP Inputs General'!$D56*$C70","v":1117.3192764690775},{"$f":"IF('DNSP Inputs General'!$B56='DNSP Inputs General'!$A$41,M$48,IF('DNSP Inputs General'!$B56='DNSP Inputs General'!$A$42,M$49,M$50))*'DNSP Inputs General'!$D56*$C70","v":1117.3192764690775},{"$f":"IF('DNSP Inputs General'!$B56='DNSP Inputs General'!$A$41,N$48,IF('DNSP Inputs General'!$B56='DNSP Inputs General'!$A$42,N$49,N$50))*'DNSP Inputs General'!$D56*$C70","v":1117.3192764690775},{"$f":"IF('DNSP Inputs General'!$B56='DNSP Inputs General'!$A$41,O$48,IF('DNSP Inputs General'!$B56='DNSP Inputs General'!$A$42,O$49,O$50))*'DNSP Inputs General'!$D56*$C70","v":1117.3192764690775},{"$f":"IF('DNSP Inputs General'!$B56='DNSP Inputs General'!$A$41,P$48,IF('DNSP Inputs General'!$B56='DNSP Inputs General'!$A$42,P$49,P$50))*'DNSP Inputs General'!$D56*$C70","v":1117.3192764690775},{"$f":"IF('DNSP Inputs General'!$B56='DNSP Inputs General'!$A$41,Q$48,IF('DNSP Inputs General'!$B56='DNSP Inputs General'!$A$42,Q$49,Q$50))*'DNSP Inputs General'!$D56*$C70","v":1117.3192764690775},{"$f":"IF('DNSP Inputs General'!$B56='DNSP Inputs General'!$A$41,R$48,IF('DNSP Inputs General'!$B56='DNSP Inputs General'!$A$42,R$49,R$50))*'DNSP Inputs General'!$D56*$C70","v":1117.3192764690775},{"$f":"IF('DNSP Inputs General'!$B56='DNSP Inputs General'!$A$41,S$48,IF('DNSP Inputs General'!$B56='DNSP Inputs General'!$A$42,S$49,S$50))*'DNSP Inputs General'!$D56*$C70","v":1117.3192764690775},{"$f":"IF('DNSP Inputs General'!$B56='DNSP Inputs General'!$A$41,T$48,IF('DNSP Inputs General'!$B56='DNSP Inputs General'!$A$42,T$49,T$50))*'DNSP Inputs General'!$D56*$C70","v":1117.3192764690775},{"$f":"IF('DNSP Inputs General'!$B56='DNSP Inputs General'!$A$41,U$48,IF('DNSP Inputs General'!$B56='DNSP Inputs General'!$A$42,U$49,U$50))*'DNSP Inputs General'!$D56*$C70","v":1117.3192764690775}]
[{"$f":"'DNSP Inputs General'!A$57","v":"Metal halide 400 watt"},null,20,null,{"$f":"IF('DNSP Inputs General'!$B57='DNSP Inputs General'!$A$41,E$48,IF('DNSP Inputs General'!$B57='DNSP Inputs General'!$A$42,E$49,E$50))*'DNSP Inputs General'!$D57*$C71","v":1210.058238553697},{"$f":"IF('DNSP Inputs General'!$B57='DNSP Inputs General'!$A$41,F$48,IF('DNSP Inputs General'!$B57='DNSP Inputs General'!$A$42,F$49,F$50))*'DNSP Inputs General'!$D57*$C71","v":67.225457697427629},{"$f":"IF('DNSP Inputs General'!$B57='DNSP Inputs General'!$A$41,G$48,IF('DNSP Inputs General'!$B57='DNSP Inputs General'!$A$42,G$49,G$50))*'DNSP Inputs General'!$D57*$C71","v":67.225457697427629},{"$f":"IF('DNSP Inputs General'!$B57='DNSP Inputs General'!$A$41,H$48,IF('DNSP Inputs General'!$B57='DNSP Inputs General'!$A$42,H$49,H$50))*'DNSP Inputs General'!$D57*$C71","v":67.225457697427629},{"$f":"IF('DNSP Inputs General'!$B57='DNSP Inputs General'!$A$41,I$48,IF('DNSP Inputs General'!$B57='DNSP Inputs General'!$A$42,I$49,I$50))*'DNSP Inputs General'!$D57*$C71","v":67.225457697427629},{"$f":"IF('DNSP Inputs General'!$B57='DNSP Inputs General'!$A$41,J$48,IF('DNSP Inputs General'!$B57='DNSP Inputs General'!$A$42,J$49,J$50))*'DNSP Inputs General'!$D57*$C71","v":67.225457697427629},{"$f":"IF('DNSP Inputs General'!$B57='DNSP Inputs General'!$A$41,K$48,IF('DNSP Inputs General'!$B57='DNSP Inputs General'!$A$42,K$49,K$50))*'DNSP Inputs General'!$D57*$C71","v":67.225457697427629},{"$f":"IF('DNSP Inputs General'!$B57='DNSP Inputs General'!$A$41,L$48,IF('DNSP Inputs General'!$B57='DNSP Inputs General'!$A$42,L$49,L$50))*'DNSP Inputs General'!$D57*$C71","v":67.225457697427629},{"$f":"IF('DNSP Inputs General'!$B57='DNSP Inputs General'!$A$41,M$48,IF('DNSP Inputs General'!$B57='DNSP Inputs General'!$A$42,M$49,M$50))*'DNSP Inputs General'!$D57*$C71","v":67.225457697427629},{"$f":"IF('DNSP Inputs General'!$B57='DNSP Inputs General'!$A$41,N$48,IF('DNSP Inputs General'!$B57='DNSP Inputs General'!$A$42,N$49,N$50))*'DNSP Inputs General'!$D57*$C71","v":67.225457697427629},{"$f":"IF('DNSP Inputs General'!$B57='DNSP Inputs General'!$A$41,O$48,IF('DNSP Inputs General'!$B57='DNSP Inputs General'!$A$42,O$49,O$50))*'DNSP Inputs General'!$D57*$C71","v":67.225457697427629},{"$f":"IF('DNSP Inputs General'!$B57='DNSP Inputs General'!$A$41,P$48,IF('DNSP Inputs General'!$B57='DNSP Inputs General'!$A$42,P$49,P$50))*'DNSP Inputs General'!$D57*$C71","v":67.225457697427629},{"$f":"IF('DNSP Inputs General'!$B57='DNSP Inputs General'!$A$41,Q$48,IF('DNSP Inputs General'!$B57='DNSP Inputs General'!$A$42,Q$49,Q$50))*'DNSP Inputs General'!$D57*$C71","v":67.225457697427629},{"$f":"IF('DNSP Inputs General'!$B57='DNSP Inputs General'!$A$41,R$48,IF('DNSP Inputs General'!$B57='DNSP Inputs General'!$A$42,R$49,R$50))*'DNSP Inputs General'!$D57*$C71","v":67.225457697427629},{"$f":"IF('DNSP Inputs General'!$B57='DNSP Inputs General'!$A$41,S$48,IF('DNSP Inputs General'!$B57='DNSP Inputs General'!$A$42,S$49,S$50))*'DNSP Inputs General'!$D57*$C71","v":67.225457697427629},{"$f":"IF('DNSP Inputs General'!$B57='DNSP Inputs General'!$A$41,T$48,IF('DNSP Inputs General'!$B57='DNSP Inputs General'!$A$42,T$49,T$50))*'DNSP Inputs General'!$D57*$C71","v":67.225457697427629},{"$f":"IF('DNSP Inputs General'!$B57='DNSP Inputs General'!$A$41,U$48,IF('DNSP Inputs General'!$B57='DNSP Inputs General'!$A$42,U$49,U$50))*'DNSP Inputs General'!$D57*$C71","v":67.225457697427629}]
[]
[]
[]
[]
[]
[null,null,null,null,{"$f":"SUM(E55:E76)","v":6003995.8158306396},{"$f":"SUM(F55:F76)","v":333555.32310170203},333555.32310170203,333555.32310170203,333555.32310170203,333555.32310170203,333555.32310170203,333555.32310170203,333555.32310170203,333555.32310170203,333555.32310170203,333555.32310170203,333555.32310170203,{"$f":"SUM(R55:R76)","v":333555.32310170203},{"$f":"SUM(S55:S76)","v":333555.32310170203},333555.32310170203,333555.32310170203]
[]
[]
["Poles & Brackets"]
["Depreciation",null,null,null,"Closing RAB per unit","Depreciation per unit"]
[null,null,null,null,{"$f":"E$47","v":2004},2005,2006,2007,2008,2009,2010,2011,2012,2013,2014,2015,2016,2017,2018,2019,2020]
[{"$f":"'RAB 2001 to 2004'!A$28","v":"Dedicated poles"},null,null,null,{"$f":"F183+F184/2","v":23.047497609967991},{"$f":"F184","v":0.69840901848387849},{"$f":"G184","v":0.69840901848387849},0.69840901848387849,0.69840901848387849,0.69840901848387849,0.69840901848387849,0.69840901848387849,0.69840901848387849,0.69840901848387849,0.69840901848387849,0.69840901848387849,0.69840901848387849,0.69840901848387849,0.69840901848387849,0.69840901848387849,0.69840901848387849]
[{"$f":"'RAB 2001 to 2004'!A$33","v":"Brackets"},null,null,null,{"$f":"F197+F198/2","v":7.0484489614942314},{"$f":"F198","v":0.21358936246952218},{"$f":"G198","v":0.21358936246952218},0.21358936246952218,0.21358936246952218,0.21358936246952218,0.21358936246952218,0.21358936246952218,0.21358936246952218,0.21358936246952218,0.21358936246952218,0.21358936246952218,0.21358936246952218,0.21358936246952218,0.21358936246952218,0.21358936246952218,0.21358936246952218]
[null,null,null,null,{"$f":"SUM(E83:E84)","v":30.095946571462221},{"$f":"SUM(F83:F84)","v":0.91199838095340069},{"$f":"SUM(G83:G84)","v":0.91199838095340069},0.91199838095340069,0.91199838095340069,0.91199838095340069,0.91199838095340069,0.91199838095340069,0.91199838095340069,0.91199838095340069,0.91199838095340069,0.91199838095340069,0.91199838095340069,0.91199838095340069,0.91199838095340069,0.91199838095340069,0.91199838095340069]
[]
[]
["Light Type",null,"Assumed",null,"Closing RAB","Depreciation"]
[null,null," 2004 Volumes",null,{"$f":"E$47","v":2004},2005,2006,2007,2008,2009,2010,2011,2012,2013,2014,2015,2016,2017,2018,2019,2020]
[{"$f":"'DNSP Inputs General'!A$41","v":"Mercury vapour 80 watt"},null,{"$f":"C$55","v":104390.7173951391},null,{"$f":"E$85*$C90","v":3141737.4532807181},{"$f":"F$85*$C90","v":95204.165250930862},95204.165250930862,95204.165250930862,95204.165250930862,95204.165250930862,95204.165250930862,95204.165250930862,95204.165250930862,95204.165250930862,95204.165250930862,95204.165250930862,95204.165250930862,{"$f":"R$85*$C90","v":95204.165250930862},{"$f":"S$85*$C90","v":95204.165250930862},95204.165250930862,95204.165250930862]
[{"$f":"'DNSP Inputs General'!A$42","v":"Sodium high pressure 150 watt"},null,{"$f":"C$56","v":24111.399964243108},null,{"$f":"E$85*$C91","v":725655.40508701664},21989.557729909597,21989.557729909597,21989.557729909597,21989.557729909597,21989.557729909597,21989.557729909597,21989.557729909597,21989.557729909597,21989.557729909597,21989.557729909597,21989.557729909597,21989.557729909597,{"$f":"R$85*$C91","v":21989.557729909597},21989.557729909597,21989.557729909597,21989.557729909597]
[{"$f":"'DNSP Inputs General'!A$43","v":"Sodium high pressure 250 watt"},null,{"$f":"C$57","v":11247.312472435277},null,{"$f":"E$85*$C92","v":338498.51524295274},10257.530764937963,10257.530764937963,10257.530764937963,10257.530764937963,10257.530764937963,10257.530764937963,10257.530764937963,10257.530764937963,10257.530764937963,10257.530764937963,10257.530764937963,10257.530764937963,{"$f":"R$85*$C92","v":10257.530764937963},10257.530764937963,10257.530764937963,10257.530764937963]
[{"$f":"'DNSP Inputs General'!A$44","v":"Fluorescent 20 watt"},null,{"$f":"C$58","v":69.941957458950512},null,{"$f":"E$85*'DNSP Inputs General'!$D44*$C93","v":4462.5351593506839},{"$f":"F$85*'DNSP Inputs General'!$D44*$C93","v":135.22833816214194},{"$f":"G$85*'DNSP Inputs General'!$D44*$C93","v":135.22833816214194},{"$f":"H$85*'DNSP Inputs General'!$D44*$C93","v":135.22833816214194},{"$f":"I$85*'DNSP Inputs General'!$D44*$C93","v":135.22833816214194},{"$f":"J$85*'DNSP Inputs General'!$D44*$C93","v":135.22833816214194},{"$f":"K$85*'DNSP Inputs General'!$D44*$C93","v":135.22833816214194},{"$f":"L$85*'DNSP Inputs General'!$D44*$C93","v":135.22833816214194},{"$f":"M$85*'DNSP Inputs General'!$D44*$C93","v":135.22833816214194},{"$f":"N$85*'DNSP Inputs General'!$D44*$C93","v":135.22833816214194},{"$f":"O$85*'DNSP Inputs General'!$D44*$C93","v":135.22833816214194},{"$f":"P$85*'DNSP Inputs General'!$D44*$C93","v":135.22833816214194},{"$f":"Q$85*'DNSP Inputs General'!$D44*$C93","v":135.22833816214194},{"$f":"R$85*'DNSP Inputs General'!$D44*$C93","v":135.22833816214194},{"$f":"S$85*'DNSP Inputs General'!$D44*$C93","v":135.22833816214194},{"$f":"T$85*'DNSP Inputs General'!$D44*$C93","v":135.22833816214194},{"$f":"U$85*'DNSP Inputs General'!$D44*$C93","v":135.22833816214194}]
[{"$f":"'DNSP Inputs General'!A$45","v":"Fluorescent 40 watt"},null,{"$f":"C$59","v":27.473141821279967},null,{"$f":"E$85*'DNSP Inputs General'!$D45*$C94","v":1752.880041815306},{"$f":"F$85*'DNSP Inputs General'!$D45*$C94","v":53.117577024706243},{"$f":"G$85*'DNSP Inputs General'!$D45*$C94","v":53.117577024706243},{"$f":"H$85*'DNSP Inputs General'!$D45*$C94","v":53.117577024706243},{"$f":"I$85*'DNSP Inputs General'!$D45*$C94","v":53.117577024706243},{"$f":"J$85*'DNSP Inputs General'!$D45*$C94","v":53.117577024706243},{"$f":"K$85*'DNSP Inputs General'!$D45*$C94","v":53.117577024706243},{"$f":"L$85*'DNSP Inputs General'!$D45*$C94","v":53.117577024706243},{"$f":"M$85*'DNSP Inputs General'!$D45*$C94","v":53.117577024706243},{"$f":"N$85*'DNSP Inputs General'!$D45*$C94","v":53.117577024706243},{"$f":"O$85*'DNSP Inputs General'!$D45*$C94","v":53.117577024706243},{"$f":"P$85*'DNSP Inputs General'!$D45*$C94","v":53.117577024706243},{"$f":"Q$85*'DNSP Inputs General'!$D45*$C94","v":53.117577024706243},{"$f":"R$85*'DNSP Inputs General'!$D45*$C94","v":53.117577024706243},{"$f":"S$85*'DNSP Inputs General'!$D45*$C94","v":53.117577024706243},{"$f":"T$85*'DNSP Inputs General'!$D45*$C94","v":53.117577024706243},{"$f":"U$85*'DNSP Inputs General'!$D45*$C94","v":53.117577024706243}]
[{"$f":"'DNSP Inputs General'!A$46","v":"Mercury vapour 50 watt"},null,{"$f":"C$60","v":449.28398215784944},null,{"$f":"E$85*'DNSP Inputs General'!$D46*$C95","v":18795.061144186624},{"$f":"F$85*'DNSP Inputs General'!$D46*$C95","v":569.54730739959484},{"$f":"G$85*'DNSP Inputs General'!$D46*$C95","v":569.54730739959484},{"$f":"H$85*'DNSP Inputs General'!$D46*$C95","v":569.54730739959484},{"$f":"I$85*'DNSP Inputs General'!$D46*$C95","v":569.54730739959484},{"$f":"J$85*'DNSP Inputs General'!$D46*$C95","v":569.54730739959484},{"$f":"K$85*'DNSP Inputs General'!$D46*$C95","v":569.54730739959484},{"$f":"L$85*'DNSP Inputs General'!$D46*$C95","v":569.54730739959484},{"$f":"M$85*'DNSP Inputs General'!$D46*$C95","v":569.54730739959484},{"$f":"N$85*'DNSP Inputs General'!$D46*$C95","v":569.54730739959484},{"$f":"O$85*'DNSP Inputs General'!$D46*$C95","v":569.54730739959484},{"$f":"P$85*'DNSP Inputs General'!$D46*$C95","v":569.54730739959484},{"$f":"Q$85*'DNSP Inputs General'!$D46*$C95","v":569.54730739959484},{"$f":"R$85*'DNSP Inputs General'!$D46*$C95","v":569.54730739959484},{"$f":"S$85*'DNSP Inputs General'!$D46*$C95","v":569.54730739959484},{"$f":"T$85*'DNSP Inputs General'!$D46*$C95","v":569.54730739959484},{"$f":"U$85*'DNSP Inputs General'!$D46*$C95","v":569.54730739959484}]
[{"$f":"'DNSP Inputs General'!A$47","v":"Mercury vapour 125 watt"},null,{"$f":"C$61","v":1385.3608933531543},null,{"$f":"E$85*'DNSP Inputs General'!$D47*$C96","v":56286.559028542106},{"$f":"F$85*'DNSP Inputs General'!$D47*$C96","v":1705.6533038952152},{"$f":"G$85*'DNSP Inputs General'!$D47*$C96","v":1705.6533038952152},{"$f":"H$85*'DNSP Inputs General'!$D47*$C96","v":1705.6533038952152},{"$f":"I$85*'DNSP Inputs General'!$D47*$C96","v":1705.6533038952152},{"$f":"J$85*'DNSP Inputs General'!$D47*$C96","v":1705.6533038952152},{"$f":"K$85*'DNSP Inputs General'!$D47*$C96","v":1705.6533038952152},{"$f":"L$85*'DNSP Inputs General'!$D47*$C96","v":1705.6533038952152},{"$f":"M$85*'DNSP Inputs General'!$D47*$C96","v":1705.6533038952152},{"$f":"N$85*'DNSP Inputs General'!$D47*$C96","v":1705.6533038952152},{"$f":"O$85*'DNSP Inputs General'!$D47*$C96","v":1705.6533038952152},{"$f":"P$85*'DNSP Inputs General'!$D47*$C96","v":1705.6533038952152},{"$f":"Q$85*'DNSP Inputs General'!$D47*$C96","v":1705.6533038952152},{"$f":"R$85*'DNSP Inputs General'!$D47*$C96","v":1705.6533038952152},{"$f":"S$85*'DNSP Inputs General'!$D47*$C96","v":1705.6533038952152},{"$f":"T$85*'DNSP Inputs General'!$D47*$C96","v":1705.6533038952152},{"$f":"U$85*'DNSP Inputs General'!$D47*$C96","v":1705.6533038952152}]
[{"$f":"'DNSP Inputs General'!A$48","v":"Mercury vapour 250 watt"},null,{"$f":"C$62","v":973.77637170719959},null,{"$f":"E$85*'DNSP Inputs General'!$D48*$C97","v":22273.108458143684},{"$f":"F$85*'DNSP Inputs General'!$D48*$C97","v":674.94268054980864},{"$f":"G$85*'DNSP Inputs General'!$D48*$C97","v":674.94268054980864},{"$f":"H$85*'DNSP Inputs General'!$D48*$C97","v":674.94268054980864},{"$f":"I$85*'DNSP Inputs General'!$D48*$C97","v":674.94268054980864},{"$f":"J$85*'DNSP Inputs General'!$D48*$C97","v":674.94268054980864},{"$f":"K$85*'DNSP Inputs General'!$D48*$C97","v":674.94268054980864},{"$f":"L$85*'DNSP Inputs General'!$D48*$C97","v":674.94268054980864},{"$f":"M$85*'DNSP Inputs General'!$D48*$C97","v":674.94268054980864},{"$f":"N$85*'DNSP Inputs General'!$D48*$C97","v":674.94268054980864},{"$f":"O$85*'DNSP Inputs General'!$D48*$C97","v":674.94268054980864},{"$f":"P$85*'DNSP Inputs General'!$D48*$C97","v":674.94268054980864},{"$f":"Q$85*'DNSP Inputs General'!$D48*$C97","v":674.94268054980864},{"$f":"R$85*'DNSP Inputs General'!$D48*$C97","v":674.94268054980864},{"$f":"S$85*'DNSP Inputs General'!$D48*$C97","v":674.94268054980864},{"$f":"T$85*'DNSP Inputs General'!$D48*$C97","v":674.94268054980864},{"$f":"U$85*'DNSP Inputs General'!$D48*$C97","v":674.94268054980864}]
[{"$f":"'DNSP Inputs General'!A$49","v":"Mercury vapour 400 watt"},null,{"$f":"C$63","v":179.2766766608415},null,{"$f":"E$85*'DNSP Inputs General'!$D49*$C98","v":4748.0411284187148},{"$f":"F$85*'DNSP Inputs General'!$D49*$C98","v":143.88003419450652},{"$f":"G$85*'DNSP Inputs General'!$D49*$C98","v":143.88003419450652},{"$f":"H$85*'DNSP Inputs General'!$D49*$C98","v":143.88003419450652},{"$f":"I$85*'DNSP Inputs General'!$D49*$C98","v":143.88003419450652},{"$f":"J$85*'DNSP Inputs General'!$D49*$C98","v":143.88003419450652},{"$f":"K$85*'DNSP Inputs General'!$D49*$C98","v":143.88003419450652},{"$f":"L$85*'DNSP Inputs General'!$D49*$C98","v":143.88003419450652},{"$f":"M$85*'DNSP Inputs General'!$D49*$C98","v":143.88003419450652},{"$f":"N$85*'DNSP Inputs General'!$D49*$C98","v":143.88003419450652},{"$f":"O$85*'DNSP Inputs General'!$D49*$C98","v":143.88003419450652},{"$f":"P$85*'DNSP Inputs General'!$D49*$C98","v":143.88003419450652},{"$f":"Q$85*'DNSP Inputs General'!$D49*$C98","v":143.88003419450652},{"$f":"R$85*'DNSP Inputs General'!$D49*$C98","v":143.88003419450652},{"$f":"S$85*'DNSP Inputs General'!$D49*$C98","v":143.88003419450652},{"$f":"T$85*'DNSP Inputs General'!$D49*$C98","v":143.88003419450652},{"$f":"U$85*'DNSP Inputs General'!$D49*$C98","v":143.88003419450652}]
[{"$f":"'DNSP Inputs General'!A$50","v":"Mercury vapour 700 watt"},null,{"$f":"C$64","v":4.2749398666917422},null,{"$f":"E$85*'DNSP Inputs General'!$D50*$C99","v":171.11562122614413},{"$f":"F$85*'DNSP Inputs General'!$D50*$C99","v":5.1853218553377012},{"$f":"G$85*'DNSP Inputs General'!$D50*$C99","v":5.1853218553377012},{"$f":"H$85*'DNSP Inputs General'!$D50*$C99","v":5.1853218553377012},{"$f":"I$85*'DNSP Inputs General'!$D50*$C99","v":5.1853218553377012},{"$f":"J$85*'DNSP Inputs General'!$D50*$C99","v":5.1853218553377012},{"$f":"K$85*'DNSP Inputs General'!$D50*$C99","v":5.1853218553377012},{"$f":"L$85*'DNSP Inputs General'!$D50*$C99","v":5.1853218553377012},{"$f":"M$85*'DNSP Inputs General'!$D50*$C99","v":5.1853218553377012},{"$f":"N$85*'DNSP Inputs General'!$D50*$C99","v":5.1853218553377012},{"$f":"O$85*'DNSP Inputs General'!$D50*$C99","v":5.1853218553377012},{"$f":"P$85*'DNSP Inputs General'!$D50*$C99","v":5.1853218553377012},{"$f":"Q$85*'DNSP Inputs General'!$D50*$C99","v":5.1853218553377012},{"$f":"R$85*'DNSP Inputs General'!$D50*$C99","v":5.1853218553377012},{"$f":"S$85*'DNSP Inputs General'!$D50*$C99","v":5.1853218553377012},{"$f":"T$85*'DNSP Inputs General'!$D50*$C99","v":5.1853218553377012},{"$f":"U$85*'DNSP Inputs General'!$D50*$C99","v":5.1853218553377012}]
[{"$f":"'DNSP Inputs General'!A$51","v":"Sodium low pressure 90 watt"},null,{"$f":"C$65","v":1},null,{"$f":"E$85*'DNSP Inputs General'!$D51*$C100","v":40.629527871474004},{"$f":"F$85*'DNSP Inputs General'!$D51*$C100","v":1.231197814287091},{"$f":"G$85*'DNSP Inputs General'!$D51*$C100","v":1.231197814287091},{"$f":"H$85*'DNSP Inputs General'!$D51*$C100","v":1.231197814287091},{"$f":"I$85*'DNSP Inputs General'!$D51*$C100","v":1.231197814287091},{"$f":"J$85*'DNSP Inputs General'!$D51*$C100","v":1.231197814287091},{"$f":"K$85*'DNSP Inputs General'!$D51*$C100","v":1.231197814287091},{"$f":"L$85*'DNSP Inputs General'!$D51*$C100","v":1.231197814287091},{"$f":"M$85*'DNSP Inputs General'!$D51*$C100","v":1.231197814287091},{"$f":"N$85*'DNSP Inputs General'!$D51*$C100","v":1.231197814287091},{"$f":"O$85*'DNSP Inputs General'!$D51*$C100","v":1.231197814287091},{"$f":"P$85*'DNSP Inputs General'!$D51*$C100","v":1.231197814287091},{"$f":"Q$85*'DNSP Inputs General'!$D51*$C100","v":1.231197814287091},{"$f":"R$85*'DNSP Inputs General'!$D51*$C100","v":1.231197814287091},{"$f":"S$85*'DNSP Inputs General'!$D51*$C100","v":1.231197814287091},{"$f":"T$85*'DNSP Inputs General'!$D51*$C100","v":1.231197814287091},{"$f":"U$85*'DNSP Inputs General'!$D51*$C100","v":1.231197814287091}]
[{"$f":"'DNSP Inputs General'!A$52","v":"Sodium low pressure 180 watt"},null,{"$f":"C$66","v":0},null,{"$f":"E$85*'DNSP Inputs General'!$D52*$C101","v":0},{"$f":"F$85*'DNSP Inputs General'!$D52*$C101","v":0},{"$f":"G$85*'DNSP Inputs General'!$D52*$C101","v":0},{"$f":"H$85*'DNSP Inputs General'!$D52*$C101","v":0},{"$f":"I$85*'DNSP Inputs General'!$D52*$C101","v":0},{"$f":"J$85*'DNSP Inputs General'!$D52*$C101","v":0},{"$f":"K$85*'DNSP Inputs General'!$D52*$C101","v":0},{"$f":"L$85*'DNSP Inputs General'!$D52*$C101","v":0},{"$f":"M$85*'DNSP Inputs General'!$D52*$C101","v":0},{"$f":"N$85*'DNSP Inputs General'!$D52*$C101","v":0},{"$f":"O$85*'DNSP Inputs General'!$D52*$C101","v":0},{"$f":"P$85*'DNSP Inputs General'!$D52*$C101","v":0},{"$f":"Q$85*'DNSP Inputs General'!$D52*$C101","v":0},{"$f":"R$85*'DNSP Inputs General'!$D52*$C101","v":0},{"$f":"S$85*'DNSP Inputs General'!$D52*$C101","v":0},{"$f":"T$85*'DNSP Inputs General'!$D52*$C101","v":0},{"$f":"U$85*'DNSP Inputs General'!$D52*$C101","v":0}]
[{"$f":"'DNSP Inputs General'!A$53","v":"Sodium high pressure 400 watt"},null,{"$f":"C$67","v":779.07054546637573},null,{"$f":"E$85*'DNSP Inputs General'!$D53*$C102","v":31184.331130635448},{"$f":"F$85*'DNSP Inputs General'!$D53*$C102","v":944.97973123137729},{"$f":"G$85*'DNSP Inputs General'!$D53*$C102","v":944.97973123137729},{"$f":"H$85*'DNSP Inputs General'!$D53*$C102","v":944.97973123137729},{"$f":"I$85*'DNSP Inputs General'!$D53*$C102","v":944.97973123137729},{"$f":"J$85*'DNSP Inputs General'!$D53*$C102","v":944.97973123137729},{"$f":"K$85*'DNSP Inputs General'!$D53*$C102","v":944.97973123137729},{"$f":"L$85*'DNSP Inputs General'!$D53*$C102","v":944.97973123137729},{"$f":"M$85*'DNSP Inputs General'!$D53*$C102","v":944.97973123137729},{"$f":"N$85*'DNSP Inputs General'!$D53*$C102","v":944.97973123137729},{"$f":"O$85*'DNSP Inputs General'!$D53*$C102","v":944.97973123137729},{"$f":"P$85*'DNSP Inputs General'!$D53*$C102","v":944.97973123137729},{"$f":"Q$85*'DNSP Inputs General'!$D53*$C102","v":944.97973123137729},{"$f":"R$85*'DNSP Inputs General'!$D53*$C102","v":944.97973123137729},{"$f":"S$85*'DNSP Inputs General'!$D53*$C102","v":944.97973123137729},{"$f":"T$85*'DNSP Inputs General'!$D53*$C102","v":944.97973123137729},{"$f":"U$85*'DNSP Inputs General'!$D53*$C102","v":944.97973123137729}]
[{"$f":"'DNSP Inputs General'!A$54","v":"Incandescent 100 watt"},null,{"$f":"C$68","v":13},null,{"$f":"E$85*'DNSP Inputs General'!$D54*$C103","v":1087.6675090926444},{"$f":"F$85*'DNSP Inputs General'!$D54*$C103","v":32.959621487655902},{"$f":"G$85*'DNSP Inputs General'!$D54*$C103","v":32.959621487655902},{"$f":"H$85*'DNSP Inputs General'!$D54*$C103","v":32.959621487655902},{"$f":"I$85*'DNSP Inputs General'!$D54*$C103","v":32.959621487655902},{"$f":"J$85*'DNSP Inputs General'!$D54*$C103","v":32.959621487655902},{"$f":"K$85*'DNSP Inputs General'!$D54*$C103","v":32.959621487655902},{"$f":"L$85*'DNSP Inputs General'!$D54*$C103","v":32.959621487655902},{"$f":"M$85*'DNSP Inputs General'!$D54*$C103","v":32.959621487655902},{"$f":"N$85*'DNSP Inputs General'!$D54*$C103","v":32.959621487655902},{"$f":"O$85*'DNSP Inputs General'!$D54*$C103","v":32.959621487655902},{"$f":"P$85*'DNSP Inputs General'!$D54*$C103","v":32.959621487655902},{"$f":"Q$85*'DNSP Inputs General'!$D54*$C103","v":32.959621487655902},{"$f":"R$85*'DNSP Inputs General'!$D54*$C103","v":32.959621487655902},{"$f":"S$85*'DNSP Inputs General'!$D54*$C103","v":32.959621487655902},{"$f":"T$85*'DNSP Inputs General'!$D54*$C103","v":32.959621487655902},{"$f":"U$85*'DNSP Inputs General'!$D54*$C103","v":32.959621487655902}]
[{"$f":"'DNSP Inputs General'!A$55","v":"Incandescent 150 watt"},null,{"$f":"C$69","v":4.3267487109222245},null,{"$f":"E$85*'DNSP Inputs General'!$D55*$C104","v":362.00492252912204},{"$f":"F$85*'DNSP Inputs General'!$D55*$C104","v":10.969846137246124},{"$f":"G$85*'DNSP Inputs General'!$D55*$C104","v":10.969846137246124},{"$f":"H$85*'DNSP Inputs General'!$D55*$C104","v":10.969846137246124},{"$f":"I$85*'DNSP Inputs General'!$D55*$C104","v":10.969846137246124},{"$f":"J$85*'DNSP Inputs General'!$D55*$C104","v":10.969846137246124},{"$f":"K$85*'DNSP Inputs General'!$D55*$C104","v":10.969846137246124},{"$f":"L$85*'DNSP Inputs General'!$D55*$C104","v":10.969846137246124},{"$f":"M$85*'DNSP Inputs General'!$D55*$C104","v":10.969846137246124},{"$f":"N$85*'DNSP Inputs General'!$D55*$C104","v":10.969846137246124},{"$f":"O$85*'DNSP Inputs General'!$D55*$C104","v":10.969846137246124},{"$f":"P$85*'DNSP Inputs General'!$D55*$C104","v":10.969846137246124},{"$f":"Q$85*'DNSP Inputs General'!$D55*$C104","v":10.969846137246124},{"$f":"R$85*'DNSP Inputs General'!$D55*$C104","v":10.969846137246124},{"$f":"S$85*'DNSP Inputs General'!$D55*$C104","v":10.969846137246124},{"$f":"T$85*'DNSP Inputs General'!$D55*$C104","v":10.969846137246124},{"$f":"U$85*'DNSP Inputs General'!$D55*$C104","v":10.969846137246124}]
[{"$f":"'DNSP Inputs General'!A$56","v":"Metal halide 250 watt"},null,{"$f":"C$70","v":332.40957064151957},null,{"$f":"E$85*'DNSP Inputs General'!$D56*$C105","v":13305.560301566928},{"$f":"F$85*'DNSP Inputs General'!$D56*$C105","v":403.19879701717969},{"$f":"G$85*'DNSP Inputs General'!$D56*$C105","v":403.19879701717969},{"$f":"H$85*'DNSP Inputs General'!$D56*$C105","v":403.19879701717969},{"$f":"I$85*'DNSP Inputs General'!$D56*$C105","v":403.19879701717969},{"$f":"J$85*'DNSP Inputs General'!$D56*$C105","v":403.19879701717969},{"$f":"K$85*'DNSP Inputs General'!$D56*$C105","v":403.19879701717969},{"$f":"L$85*'DNSP Inputs General'!$D56*$C105","v":403.19879701717969},{"$f":"M$85*'DNSP Inputs General'!$D56*$C105","v":403.19879701717969},{"$f":"N$85*'DNSP Inputs General'!$D56*$C105","v":403.19879701717969},{"$f":"O$85*'DNSP Inputs General'!$D56*$C105","v":403.19879701717969},{"$f":"P$85*'DNSP Inputs General'!$D56*$C105","v":403.19879701717969},{"$f":"Q$85*'DNSP Inputs General'!$D56*$C105","v":403.19879701717969},{"$f":"R$85*'DNSP Inputs General'!$D56*$C105","v":403.19879701717969},{"$f":"S$85*'DNSP Inputs General'!$D56*$C105","v":403.19879701717969},{"$f":"T$85*'DNSP Inputs General'!$D56*$C105","v":403.19879701717969},{"$f":"U$85*'DNSP Inputs General'!$D56*$C105","v":403.19879701717969}]
[{"$f":"'DNSP Inputs General'!A$57","v":"Metal halide 400 watt"},null,{"$f":"C$71","v":20},null,{"$f":"E$85*'DNSP Inputs General'!$D57*$C106","v":800.55217880089515},{"$f":"F$85*'DNSP Inputs General'!$D57*$C106","v":24.259156933360462},{"$f":"G$85*'DNSP Inputs General'!$D57*$C106","v":24.259156933360462},{"$f":"H$85*'DNSP Inputs General'!$D57*$C106","v":24.259156933360462},{"$f":"I$85*'DNSP Inputs General'!$D57*$C106","v":24.259156933360462},{"$f":"J$85*'DNSP Inputs General'!$D57*$C106","v":24.259156933360462},{"$f":"K$85*'DNSP Inputs General'!$D57*$C106","v":24.259156933360462},{"$f":"L$85*'DNSP Inputs General'!$D57*$C106","v":24.259156933360462},{"$f":"M$85*'DNSP Inputs General'!$D57*$C106","v":24.259156933360462},{"$f":"N$85*'DNSP Inputs General'!$D57*$C106","v":24.259156933360462},{"$f":"O$85*'DNSP Inputs General'!$D57*$C106","v":24.259156933360462},{"$f":"P$85*'DNSP Inputs General'!$D57*$C106","v":24.259156933360462},{"$f":"Q$85*'DNSP Inputs General'!$D57*$C106","v":24.259156933360462},{"$f":"R$85*'DNSP Inputs General'!$D57*$C106","v":24.259156933360462},{"$f":"S$85*'DNSP Inputs General'!$D57*$C106","v":24.259156933360462},{"$f":"T$85*'DNSP Inputs General'!$D57*$C106","v":24.259156933360462},{"$f":"U$85*'DNSP Inputs General'!$D57*$C106","v":24.259156933360462}]
[]
[]
[]
[]
[]
[]
[null,null,null,null,{"$f":"SUM(E90:E112)","v":4361161.4197628647},{"$f":"SUM(F90:F112)","v":132156.40665948085},132156.40665948085,132156.40665948085,132156.40665948085,132156.40665948085,132156.40665948085,132156.40665948085,132156.40665948085,132156.40665948085,132156.40665948085,132156.40665948085,132156.40665948085,{"$f":"SUM(R90:R112)","v":132156.40665948085},{"$f":"SUM(S90:S112)","v":132156.40665948085},132156.40665948085,132156.40665948085]
[]
[]
[]
[]
[]
["Detailed calculations"]
[]
[]
["DEPRECIATION PROFILE"]
["Year Counter",1,{"$f":"B123+1","v":2},3,4,5,6,7,8,9,10,11,12,13,14,15,{"$f":"P123+1","v":16},{"$f":"Q123+1","v":17},{"$f":"R123+1","v":18},{"$f":"S123+1","v":19},{"$f":"T123+1","v":20},{"$f":"U123+1","v":21},{"$f":"V123+1","v":22},{"$f":"W123+1","v":23},{"$f":"X123+1","v":24},{"$f":"Y123+1","v":25},{"$f":"Z123+1","v":26},{"$f":"AA123+1","v":27},{"$f":"AB123+1","v":28},{"$f":"AC123+1","v":29},{"$f":"AD123+1","v":30},{"$f":"AE123+1","v":31},{"$f":"AF123+1","v":32},{"$f":"AG123+1","v":33},{"$f":"AH123+1","v":34},{"$f":"AI123+1","v":35},{"$f":"AJ123+1","v":36},{"$f":"AK123+1","v":37},{"$f":"AL123+1","v":38},{"$f":"AM123+1","v":39},40]
["Numerator",2001,{"$f":"B124+1","v":2002},2003,2004,2005,2006,2007,2008,2009,2010,2011,2012,2013,2014,2015,2016,2017,2018,2019,2020,2021,2022,2023,2024,2025,2026,2027,2028,2029,2030,2031,2032,2033,2034,2035,2036,2037,2038,2039,2040]
[{"$f":"'Inputs PL Final Decision 2004'!$A$65","v":"20 year asset life"},10,29,47,64,{"$f":"E125+10-4","v":70},{"$f":"F125-4","v":66},{"$f":"IF(G125-4<0,0,G125-4)","v":62},58,54,50,46,42,38,34,30,{"$f":"IF(P125-4<0,0,P125-4)","v":26},{"$f":"IF(Q125-4<0,0,Q125-4)","v":22},{"$f":"IF(R125-4<0,0,R125-4)","v":18},{"$f":"IF(S125-4<0,0,S125-4)","v":14},{"$f":"IF(T125-4<0,0,T125-4)","v":10},{"$f":"IF(U125-4<0,0,U125-4)","v":6},{"$f":"IF(V125-3<0,0,V125-3)","v":3},{"$f":"IF(W125-2<0,0,W125-2)","v":1},{"$f":"IF(X125-1<0,0,X125-1)","v":0},{"$f":"IF(Y125-1<0,0,Y125-1)","v":0},{"$f":"IF(Z125-1<0,0,Z125-1)","v":0},0,0,0,0,0,0,0,0,0,0,0,0,0,0]
[]
[{"$f":"'Inputs PL Final Decision 2004'!$A$74","v":"35 year asset life"},17.5,51.5,84.5,116.5,{"$f":"E127+17.5-4","v":130},{"$f":"F127-4","v":126},{"$f":"IF(G127-4<0,0,G127-4)","v":122},118,114,110,106,102,98,94,90,{"$f":"IF(P127-4<0,0,P127-4)","v":86},{"$f":"IF(Q127-4<0,0,Q127-4)","v":82},{"$f":"IF(R127-4<0,0,R127-4)","v":78},{"$f":"IF(S127-4<0,0,S127-4)","v":74},{"$f":"IF(T127-4<0,0,T127-4)","v":70},{"$f":"IF(U127-4<0,0,U127-4)","v":66},{"$f":"IF(V127-4<0,0,V127-4)","v":62},{"$f":"IF(W127-4<0,0,W127-4)","v":58},{"$f":"IF(X127-4<0,0,X127-4)","v":54},{"$f":"IF(Y127-4<0,0,Y127-4)","v":50},{"$f":"IF(Z127-4<0,0,Z127-4)","v":46},{"$f":"IF(AA127-4<0,0,AA127-4)","v":42},{"$f":"IF(AB127-4<0,0,AB127-4)","v":38},{"$f":"IF(AC127-4<0,0,AC127-4)","v":34},{"$f":"IF(AD127-4<0,0,AD127-4)","v":30},{"$f":"IF(AE127-4<0,0,AE127-4)","v":26},{"$f":"IF(AF127-4<0,0,AF127-4)","v":22},{"$f":"IF(AG127-4<0,0,AG127-4)","v":18},{"$f":"IF(AH127-4<0,0,AH127-4)","v":14},{"$f":"IF(AI127-4<0,0,AI127-4)","v":10},{"$f":"IF(AJ127-4<0,0,AJ127-4)","v":6},{"$f":"IF(AK127-3<0,0,AK127-3)","v":3},{"$f":"IF(AL127-2<0,0,AL127-2)","v":1},{"$f":"IF(AM127-1<0,0,AM127-1)","v":0},{"$f":"IF(AN127-1<0,0,AN127-1)","v":0}]
[]
[]
[]
[]
["MV 80",null,null,{"$f":"'Inputs PL Final Decision 2004'!$B$88","v":"Location of selected public lighting assets within distributors' areas (%)"},null,null,null,null,null,{"$f":"'Inputs PL Final Decision 2004'!$B$107","v":"Proportion of lights installed at 1 January 2001 (%)"}]
["Luminaire",null,null,{"$f":"'Inputs PL Final Decision 2004'!$B$92","v":"CitiPower"},{"$f":"IF($A$1='Inputs PL Final Decision 2004'!$A$123,'Inputs PL Final Decision 2004'!$C$92,IF($A$1='Inputs PL Final Decision 2004'!$A$124,'Inputs PL Final Decision 2004'!$D$92,IF($A$1='Inputs PL Final Decision 2004'!$A$125,'Inputs PL Final Decision 2004'!$E$92,IF($A$1='Inputs PL Final Decision 2004'!$A$126,'Inputs PL Final Decision 2004'!$F$92,IF($A$1='Inputs PL Final Decision 2004'!$A$127,'Inputs PL Final Decision 2004'!$G$92,'Inputs PL Final Decision 2004'!$H$92)))))","v":0},null,null,null,null,{"$f":"IF($A$1='Inputs PL Final Decision 2004'!$A$123,'Inputs PL Final Decision 2004'!$C$110,IF($A$1='Inputs PL Final Decision 2004'!$A$124,'Inputs PL Final Decision 2004'!$D$110,IF($A$1='Inputs PL Final Decision 2004'!$A$125,'Inputs PL Final Decision 2004'!$E$110,IF($A$1='Inputs PL Final Decision 2004'!$A$126,'Inputs PL Final Decision 2004'!$F$110,IF($A$1='Inputs PL Final Decision 2004'!$A$127,'Inputs PL Final Decision 2004'!$G$110,'Inputs PL Final Decision 2004'!$H$110)))))","v":0.86777777777777776}]
["Capital cost",{"$f":"($F$212*E133+$L$212*E134+$R$212*E135+$X$212*E136)*J133","v":227.02670695480774},null,{"$f":"'Inputs PL Final Decision 2004'!$B$93","v":"Urban"},{"$f":"IF($A$1='Inputs PL Final Decision 2004'!$A$123,'Inputs PL Final Decision 2004'!$C$93,IF($A$1='Inputs PL Final Decision 2004'!$A$124,'Inputs PL Final Decision 2004'!$D$93,IF($A$1='Inputs PL Final Decision 2004'!$A$125,'Inputs PL Final Decision 2004'!$E$93,IF($A$1='Inputs PL Final Decision 2004'!$A$126,'Inputs PL Final Decision 2004'!$F$93,IF($A$1='Inputs PL Final Decision 2004'!$A$127,'Inputs PL Final Decision 2004'!$G$93,'Inputs PL Final Decision 2004'!$H$93)))))","v":0.39}]
[{"$f":"'Inputs PL Final Decision 2004'!$A$20","v":"Depreciation period"},{"$f":"'Inputs PL Final Decision 2004'!$B$20","v":20},null,{"$f":"'Inputs PL Final Decision 2004'!$B$94","v":"Rural"},{"$f":"IF($A$1='Inputs PL Final Decision 2004'!$A$123,'Inputs PL Final Decision 2004'!$C$94,IF($A$1='Inputs PL Final Decision 2004'!$A$124,'Inputs PL Final Decision 2004'!$D$94,IF($A$1='Inputs PL Final Decision 2004'!$A$125,'Inputs PL Final Decision 2004'!$E$94,IF($A$1='Inputs PL Final Decision 2004'!$A$126,'Inputs PL Final Decision 2004'!$F$94,IF($A$1='Inputs PL Final Decision 2004'!$A$127,'Inputs PL Final Decision 2004'!$G$94,'Inputs PL Final Decision 2004'!$H$94)))))","v":0.57099999999999995}]
[{"$f":"'Inputs PL Final Decision 2004'!$A$16","v":"Number of years from 1 January 2001"},{"$f":"'Inputs PL Final Decision 2004'!$B$16","v":4},null,{"$f":"'Inputs PL Final Decision 2004'!$B$95","v":"Remote"},{"$f":"IF($A$1='Inputs PL Final Decision 2004'!$A$123,'Inputs PL Final Decision 2004'!$C$95,IF($A$1='Inputs PL Final Decision 2004'!$A$124,'Inputs PL Final Decision 2004'!$D$95,IF($A$1='Inputs PL Final Decision 2004'!$A$125,'Inputs PL Final Decision 2004'!$E$95,IF($A$1='Inputs PL Final Decision 2004'!$A$126,'Inputs PL Final Decision 2004'!$F$95,IF($A$1='Inputs PL Final Decision 2004'!$A$127,'Inputs PL Final Decision 2004'!$G$95,'Inputs PL Final Decision 2004'!$H$95)))))","v":3.9E-2}]
[]
[]
[]
[null,null,null,null,2004,{"$f":"E140+1","v":2005},2006,2007,2008,2009,2010,2011,2012,2013,2014,2015,{"$f":"P140+1","v":2016},{"$f":"Q140+1","v":2017},{"$f":"R140+1","v":2018},{"$f":"S140+1","v":2019},{"$f":"T140+1","v":2020},{"$f":"U140+1","v":2021},{"$f":"V140+1","v":2022},{"$f":"W140+1","v":2023},{"$f":"X140+1","v":2024},{"$f":"Y140+1","v":2025},{"$f":"Z140+1","v":2026},{"$f":"AA140+1","v":2027},{"$f":"AB140+1","v":2028},{"$f":"AC140+1","v":2029},{"$f":"AD140+1","v":2030},{"$f":"AE140+1","v":2031},{"$f":"AF140+1","v":2032},{"$f":"AG140+1","v":2033},{"$f":"AH140+1","v":2034},{"$f":"AI140+1","v":2035},{"$f":"AJ140+1","v":2036},{"$f":"AK140+1","v":2037},{"$f":"AL140+1","v":2038},{"$f":"AM140+1","v":2039},{"$f":"AN140+1","v":2040}]
["RAB for Return",null,null,null,{"$f":"E$125/$B135*$B134/$B135","v":36.324273112769241},39.729673717091359,37.459406647543275,35.189139577995199,32.918872508447123,30.648605438899047,28.378338369350967,26.108071299802891,23.837804230254811,21.567537160706735,19.297270091158659,17.027003021610579,{"$f":"Q$125/$B135*$B134/$B135","v":14.756735952062504},12.486468882514426,10.216201812966348,7.9459347434182703,5.6756676738701932,{"$f":"V$125/$B135*$B134/$B135","v":3.4054006043221157},1.7027003021610578,0.56756676738701939,0,0,0,0,0,0,0,0,0,0,0,0,0,0,0,0,0]
["Depreciation",null,null,null,{"$f":"IF(E141=0,0,$B$134*$B$136/$B$135/$B$135)","v":2.2702670695480771},2.2702670695480771,2.2702670695480771,2.2702670695480771,2.2702670695480771,2.2702670695480771,2.2702670695480771,2.2702670695480771,2.2702670695480771,2.2702670695480771,2.2702670695480771,2.2702670695480771,{"$f":"IF(Q141=0,0,$B$134*$B$136/$B$135/$B$135)","v":2.2702670695480771},2.2702670695480771,2.2702670695480771,2.2702670695480771,2.2702670695480771,{"$f":"IF(V141=0,0,$B$134*$B$136/$B$135/$B$135)","v":2.2702670695480771},2.2702670695480771,2.2702670695480771,0,0,0,0,0,0,0,0,0,0,0,0,0,0,0,0,0]
[]
[]
[]
["S-HP 150 ",null,null,{"$f":"'Inputs PL Final Decision 2004'!$B$88","v":"Location of selected public lighting assets within distributors' areas (%)"},null,null,null,null,null,{"$f":"'Inputs PL Final Decision 2004'!$B$107","v":"Proportion of lights installed at 1 January 2001 (%)"}]
["Luminaire",null,null,{"$f":"'Inputs PL Final Decision 2004'!$B$92","v":"CitiPower"},{"$f":"IF($A$1='Inputs PL Final Decision 2004'!$A$123,'Inputs PL Final Decision 2004'!$C$97,IF($A$1='Inputs PL Final Decision 2004'!$A$124,'Inputs PL Final Decision 2004'!$D$97,IF($A$1='Inputs PL Final Decision 2004'!$A$125,'Inputs PL Final Decision 2004'!$E$97,IF($A$1='Inputs PL Final Decision 2004'!$A$126,'Inputs PL Final Decision 2004'!$F$97,IF($A$1='Inputs PL Final Decision 2004'!$A$127,'Inputs PL Final Decision 2004'!$G$97,'Inputs PL Final Decision 2004'!$H$97)))))","v":0},null,null,null,null,{"$f":"IF($A$1='Inputs PL Final Decision 2004'!$A$123,'Inputs PL Final Decision 2004'!$C$111,IF($A$1='Inputs PL Final Decision 2004'!$A$124,'Inputs PL Final Decision 2004'!$D$111,IF($A$1='Inputs PL Final Decision 2004'!$A$125,'Inputs PL Final Decision 2004'!$E$111,IF($A$1='Inputs PL Final Decision 2004'!$A$126,'Inputs PL Final Decision 2004'!$F$111,IF($A$1='Inputs PL Final Decision 2004'!$A$127,'Inputs PL Final Decision 2004'!$G$111,'Inputs PL Final Decision 2004'!$H$111)))))","v":0.79574999999999996}]
["Capital cost",{"$f":"($F$218*E147+$L$218*E148+$R$218*E149+$X$218*E150)*J147","v":231.44143108096151},null,{"$f":"'Inputs PL Final Decision 2004'!$B$93","v":"Urban"},{"$f":"IF($A$1='Inputs PL Final Decision 2004'!$A$123,'Inputs PL Final Decision 2004'!$C$98,IF($A$1='Inputs PL Final Decision 2004'!$A$124,'Inputs PL Final Decision 2004'!$D$98,IF($A$1='Inputs PL Final Decision 2004'!$A$125,'Inputs PL Final Decision 2004'!$E$98,IF($A$1='Inputs PL Final Decision 2004'!$A$126,'Inputs PL Final Decision 2004'!$F$98,IF($A$1='Inputs PL Final Decision 2004'!$A$127,'Inputs PL Final Decision 2004'!$G$98,'Inputs PL Final Decision 2004'!$H$98)))))","v":0.52}]
[{"$f":"'Inputs PL Final Decision 2004'!$A$20","v":"Depreciation period"},{"$f":"'Inputs PL Final Decision 2004'!$B$30","v":20},null,{"$f":"'Inputs PL Final Decision 2004'!$B$94","v":"Rural"},{"$f":"IF($A$1='Inputs PL Final Decision 2004'!$A$123,'Inputs PL Final Decision 2004'!$C$99,IF($A$1='Inputs PL Final Decision 2004'!$A$124,'Inputs PL Final Decision 2004'!$D$99,IF($A$1='Inputs PL Final Decision 2004'!$A$125,'Inputs PL Final Decision 2004'!$E$99,IF($A$1='Inputs PL Final Decision 2004'!$A$126,'Inputs PL Final Decision 2004'!$F$99,IF($A$1='Inputs PL Final Decision 2004'!$A$127,'Inputs PL Final Decision 2004'!$G$99,'Inputs PL Final Decision 2004'!$H$99)))))","v":0.441}]
[{"$f":"'Inputs PL Final Decision 2004'!$A$16","v":"Number of years from 1 January 2001"},{"$f":"'Inputs PL Final Decision 2004'!$B$16","v":4},null,{"$f":"'Inputs PL Final Decision 2004'!$B$95","v":"Remote"},{"$f":"IF($A$1='Inputs PL Final Decision 2004'!$A$123,'Inputs PL Final Decision 2004'!$C$100,IF($A$1='Inputs PL Final Decision 2004'!$A$124,'Inputs PL Final Decision 2004'!$D$100,IF($A$1='Inputs PL Final Decision 2004'!$A$125,'Inputs PL Final Decision 2004'!$E$100,IF($A$1='Inputs PL Final Decision 2004'!$A$126,'Inputs PL Final Decision 2004'!$F$100,IF($A$1='Inputs PL Final Decision 2004'!$A$127,'Inputs PL Final Decision 2004'!$G$100,'Inputs PL Final Decision 2004'!$H$100)))))","v":3.9E-2}]
[]
[]
[]
[null,null,null,null,2004,{"$f":"E154+1","v":2005},2006,2007,2008,2009,2010,2011,2012,2013,2014,2015,{"$f":"P154+1","v":2016},{"$f":"Q154+1","v":2017},{"$f":"R154+1","v":2018},{"$f":"S154+1","v":2019},{"$f":"T154+1","v":2020},{"$f":"U154+1","v":2021},{"$f":"V154+1","v":2022},{"$f":"W154+1","v":2023},{"$f":"X154+1","v":2024},{"$f":"Y154+1","v":2025},{"$f":"Z154+1","v":2026},{"$f":"AA154+1","v":2027},{"$f":"AB154+1","v":2028},{"$f":"AC154+1","v":2029},{"$f":"AD154+1","v":2030},{"$f":"AE154+1","v":2031},{"$f":"AF154+1","v":2032},{"$f":"AG154+1","v":2033},{"$f":"AH154+1","v":2034},{"$f":"AI154+1","v":2035},{"$f":"AJ154+1","v":2036},{"$f":"AK154+1","v":2037},{"$f":"AL154+1","v":2038},{"$f":"AM154+1","v":2039},{"$f":"AN154+1","v":2040}]
["RAB for Return",null,null,null,{"$f":"E$125/$B149*$B148/$B149","v":37.030628972953842},40.502250439168265,38.187836128358647,35.873421817549037,33.55900750673942,31.244593195929802,28.930178885120188,26.615764574310571,24.301350263500957,21.986935952691343,19.672521641881726,17.358107331072112,{"$f":"Q$125/$B149*$B148/$B149","v":15.043693020262499},12.729278709452883,10.414864398643267,8.1004500878336536,5.786035777024038,3.4716214662144225,1.7358107331072112,0.57860357770240378,0,0,0,0,0,0,0,0,0,0,0,0,0,0,0,0,0]
["Depreciation",null,null,null,{"$f":"IF(E155=0,0,$B$148*$B$150/$B$149/$B$149)","v":2.3144143108096151},2.3144143108096151,2.3144143108096151,2.3144143108096151,2.3144143108096151,2.3144143108096151,2.3144143108096151,2.3144143108096151,2.3144143108096151,2.3144143108096151,2.3144143108096151,2.3144143108096151,{"$f":"IF(Q155=0,0,$B$148*$B$150/$B$149/$B$149)","v":2.3144143108096151},2.3144143108096151,2.3144143108096151,2.3144143108096151,2.3144143108096151,2.3144143108096151,2.3144143108096151,2.3144143108096151,0,0,0,0,0,0,0,0,0,0,0,0,0,0,0,0,0]
[]
[]
[]
["S-HP 250 ",null,null,{"$f":"'Inputs PL Final Decision 2004'!$B$88","v":"Location of selected public lighting assets within distributors' areas (%)"},null,null,null,null,null,{"$f":"'Inputs PL Final Decision 2004'!$B$107","v":"Proportion of lights installed at 1 January 2001 (%)"}]
["Luminaire",null,null,{"$f":"'Inputs PL Final Decision 2004'!$B$92","v":"CitiPower"},{"$f":"IF($A$1='Inputs PL Final Decision 2004'!$A$123,'Inputs PL Final Decision 2004'!$C$102,IF($A$1='Inputs PL Final Decision 2004'!$A$124,'Inputs PL Final Decision 2004'!$D$102,IF($A$1='Inputs PL Final Decision 2004'!$A$125,'Inputs PL Final Decision 2004'!$E$102,IF($A$1='Inputs PL Final Decision 2004'!$A$126,'Inputs PL Final Decision 2004'!$F$102,IF($A$1='Inputs PL Final Decision 2004'!$A$127,'Inputs PL Final Decision 2004'!$G$102,'Inputs PL Final Decision 2004'!$H$102)))))","v":0},null,null,null,null,{"$f":"IF($A$1='Inputs PL Final Decision 2004'!$A$123,'Inputs PL Final Decision 2004'!$C$112,IF($A$1='Inputs PL Final Decision 2004'!$A$124,'Inputs PL Final Decision 2004'!$D$112,IF($A$1='Inputs PL Final Decision 2004'!$A$125,'Inputs PL Final Decision 2004'!$E$112,IF($A$1='Inputs PL Final Decision 2004'!$A$126,'Inputs PL Final Decision 2004'!$F$112,IF($A$1='Inputs PL Final Decision 2004'!$A$127,'Inputs PL Final Decision 2004'!$G$112,'Inputs PL Final Decision 2004'!$H$112)))))","v":0.8570165745856354}]
["Capital cost",{"$f":"($F$224*E161+$L$224*E162+$R$224*E163+$X$224*E164)*J161","v":252.72728457679557},null,{"$f":"'Inputs PL Final Decision 2004'!$B$93","v":"Urban"},{"$f":"IF($A$1='Inputs PL Final Decision 2004'!$A$123,'Inputs PL Final Decision 2004'!$C$103,IF($A$1='Inputs PL Final Decision 2004'!$A$124,'Inputs PL Final Decision 2004'!$D$103,IF($A$1='Inputs PL Final Decision 2004'!$A$125,'Inputs PL Final Decision 2004'!$E$103,IF($A$1='Inputs PL Final Decision 2004'!$A$126,'Inputs PL Final Decision 2004'!$F$103,IF($A$1='Inputs PL Final Decision 2004'!$A$127,'Inputs PL Final Decision 2004'!$G$103,'Inputs PL Final Decision 2004'!$H$103)))))","v":0.48}]
[{"$f":"'Inputs PL Final Decision 2004'!$A$20","v":"Depreciation period"},{"$f":"'Inputs PL Final Decision 2004'!$B$41","v":20},null,{"$f":"'Inputs PL Final Decision 2004'!$B$94","v":"Rural"},{"$f":"IF($A$1='Inputs PL Final Decision 2004'!$A$123,'Inputs PL Final Decision 2004'!$C$104,IF($A$1='Inputs PL Final Decision 2004'!$A$124,'Inputs PL Final Decision 2004'!$D$104,IF($A$1='Inputs PL Final Decision 2004'!$A$125,'Inputs PL Final Decision 2004'!$E$104,IF($A$1='Inputs PL Final Decision 2004'!$A$126,'Inputs PL Final Decision 2004'!$F$104,IF($A$1='Inputs PL Final Decision 2004'!$A$127,'Inputs PL Final Decision 2004'!$G$104,'Inputs PL Final Decision 2004'!$H$104)))))","v":0.48099999999999998}]
[{"$f":"'Inputs PL Final Decision 2004'!$A$16","v":"Number of years from 1 January 2001"},{"$f":"'Inputs PL Final Decision 2004'!$B$16","v":4},null,{"$f":"'Inputs PL Final Decision 2004'!$B$95","v":"Remote"},{"$f":"IF($A$1='Inputs PL Final Decision 2004'!$A$123,'Inputs PL Final Decision 2004'!$C$105,IF($A$1='Inputs PL Final Decision 2004'!$A$124,'Inputs PL Final Decision 2004'!$D$105,IF($A$1='Inputs PL Final Decision 2004'!$A$125,'Inputs PL Final Decision 2004'!$E$105,IF($A$1='Inputs PL Final Decision 2004'!$A$126,'Inputs PL Final Decision 2004'!$F$105,IF($A$1='Inputs PL Final Decision 2004'!$A$127,'Inputs PL Final Decision 2004'!$G$105,'Inputs PL Final Decision 2004'!$H$105)))))","v":3.9E-2}]
[]
[]
[]
[null,null,null,null,2004,{"$f":"E168+1","v":2005},2006,2007,2008,2009,2010,2011,2012,2013,2014,2015,{"$f":"P168+1","v":2016},{"$f":"Q168+1","v":2017},{"$f":"R168+1","v":2018},{"$f":"S168+1","v":2019},{"$f":"T168+1","v":2020},{"$f":"U168+1","v":2021},{"$f":"V168+1","v":2022},{"$f":"W168+1","v":2023},{"$f":"X168+1","v":2024},{"$f":"Y168+1","v":2025},{"$f":"Z168+1","v":2026},{"$f":"AA168+1","v":2027},{"$f":"AB168+1","v":2028},{"$f":"AC168+1","v":2029},{"$f":"AD168+1","v":2030},{"$f":"AE168+1","v":2031},{"$f":"AF168+1","v":2032},{"$f":"AG168+1","v":2033},{"$f":"AH168+1","v":2034},{"$f":"AI168+1","v":2035},{"$f":"AJ168+1","v":2036},{"$f":"AK168+1","v":2037},{"$f":"AL168+1","v":2038},{"$f":"AM168+1","v":2039},{"$f":"AN168+1","v":2040}]
["RAB for Return",null,null,null,{"$f":"E$125/$B163*$B162/$B163","v":40.436365532287297},44.22727480093922,41.700001955171267,39.172729109403313,36.645456263635353,34.118183417867399,31.59091057209945,29.063637726331489,26.536364880563536,24.009092034795579,21.481819189027625,18.954546343259668,{"$f":"Q$125/$B163*$B162/$B163","v":16.427273497491711},13.900000651723758,11.372727805955801,8.8454549601878441,6.3181821144198889,3.7909092686519337,1.8954546343259668,0.63181821144198902,0,0,0,0,0,0,0,0,0,0,0,0,0,0,0,0,0]
["Depreciation",null,null,null,{"$f":"IF(E169=0,0,$B$162*$B$164/$B$163/$B$163)","v":2.5272728457679556},2.5272728457679556,2.5272728457679556,2.5272728457679556,2.5272728457679556,2.5272728457679556,2.5272728457679556,2.5272728457679556,2.5272728457679556,2.5272728457679556,2.5272728457679556,2.5272728457679556,{"$f":"IF(Q169=0,0,$B$162*$B$164/$B$163/$B$163)","v":2.5272728457679556},2.5272728457679556,2.5272728457679556,2.5272728457679556,2.5272728457679556,2.5272728457679556,2.5272728457679556,2.5272728457679556,0,0,0,0,0,0,0,0,0,0,0,0,0,0,0,0,0]
[]
[]
[]
["Poles & Brackets",null,null,{"$f":"'Inputs PL Final Decision 2004'!$B$88","v":"Location of selected public lighting assets within distributors' areas (%)"},null,null,null,null,null,{"$f":"'Inputs PL Final Decision 2004'!$A$114","v":"Proportion of lights on dedicated poles"},null,null,null,{"$f":"'Inputs PL Final Decision 2004'!$A$115","v":"Proportion of dedicated poles at 1 Jan 2001"}]
["Dedicated poles",null,null,{"$f":"'Inputs PL Final Decision 2004'!$B$92","v":"CitiPower"},{"$f":"IF($A$1='Inputs PL Final Decision 2004'!$A$123,'Inputs PL Final Decision 2004'!$C$92,IF($A$1='Inputs PL Final Decision 2004'!$A$124,'Inputs PL Final Decision 2004'!$D$92,IF($A$1='Inputs PL Final Decision 2004'!$A$125,'Inputs PL Final Decision 2004'!$E$92,IF($A$1='Inputs PL Final Decision 2004'!$A$126,'Inputs PL Final Decision 2004'!$F$92,IF($A$1='Inputs PL Final Decision 2004'!$A$127,'Inputs PL Final Decision 2004'!$G$92,'Inputs PL Final Decision 2004'!$H$92)))))","v":0},null,null,null,null,{"$f":"IF($A$1='Inputs PL Final Decision 2004'!$A$123,'Inputs PL Final Decision 2004'!$C$114,IF($A$1='Inputs PL Final Decision 2004'!$A$124,'Inputs PL Final Decision 2004'!$D$114,IF($A$1='Inputs PL Final Decision 2004'!$A$125,'Inputs PL Final Decision 2004'!$E$114,IF($A$1='Inputs PL Final Decision 2004'!$A$126,'Inputs PL Final Decision 2004'!$F$114,IF($A$1='Inputs PL Final Decision 2004'!$A$127,'Inputs PL Final Decision 2004'!$G$114,'Inputs PL Final Decision 2004'!$H$114)))))","v":0.28800286795458091},null,null,null,{"$f":"IF($A$1='Inputs PL Final Decision 2004'!$A$123,'Inputs PL Final Decision 2004'!$C$115,IF($A$1='Inputs PL Final Decision 2004'!$A$124,'Inputs PL Final Decision 2004'!$D$115,IF($A$1='Inputs PL Final Decision 2004'!$A$125,'Inputs PL Final Decision 2004'!$E$115,IF($A$1='Inputs PL Final Decision 2004'!$A$126,'Inputs PL Final Decision 2004'!$F$115,IF($A$1='Inputs PL Final Decision 2004'!$A$127,'Inputs PL Final Decision 2004'!$G$115,'Inputs PL Final Decision 2004'!$H$115)))))","v":0.88888888888888884}]
["Capital cost",{"$f":"($F$229*E175+$L$229*E176+$R$229*E177+$X$229*E178)*J175*N175","v":213.88776191068777},null,{"$f":"'Inputs PL Final Decision 2004'!$B$93","v":"Urban"},{"$f":"IF($A$1='Inputs PL Final Decision 2004'!$A$123,'Inputs PL Final Decision 2004'!$C$93,IF($A$1='Inputs PL Final Decision 2004'!$A$124,'Inputs PL Final Decision 2004'!$D$93,IF($A$1='Inputs PL Final Decision 2004'!$A$125,'Inputs PL Final Decision 2004'!$E$93,IF($A$1='Inputs PL Final Decision 2004'!$A$126,'Inputs PL Final Decision 2004'!$F$93,IF($A$1='Inputs PL Final Decision 2004'!$A$127,'Inputs PL Final Decision 2004'!$G$93,'Inputs PL Final Decision 2004'!$H$93)))))","v":0.39}]
[{"$f":"'Inputs PL Final Decision 2004'!$A$52","v":"Depreciation of dedicated street lighting pole & bracket"},{"$f":"'Inputs PL Final Decision 2004'!$B$52","v":35},null,{"$f":"'Inputs PL Final Decision 2004'!$B$94","v":"Rural"},{"$f":"IF($A$1='Inputs PL Final Decision 2004'!$A$123,'Inputs PL Final Decision 2004'!$C$94,IF($A$1='Inputs PL Final Decision 2004'!$A$124,'Inputs PL Final Decision 2004'!$D$94,IF($A$1='Inputs PL Final Decision 2004'!$A$125,'Inputs PL Final Decision 2004'!$E$94,IF($A$1='Inputs PL Final Decision 2004'!$A$126,'Inputs PL Final Decision 2004'!$F$94,IF($A$1='Inputs PL Final Decision 2004'!$A$127,'Inputs PL Final Decision 2004'!$G$94,'Inputs PL Final Decision 2004'!$H$94)))))","v":0.57099999999999995}]
[{"$f":"'Inputs PL Final Decision 2004'!$A$16","v":"Number of years from 1 January 2001"},{"$f":"'Inputs PL Final Decision 2004'!$B$16","v":4},null,{"$f":"'Inputs PL Final Decision 2004'!$B$95","v":"Remote"},{"$f":"IF($A$1='Inputs PL Final Decision 2004'!$A$123,'Inputs PL Final Decision 2004'!$C$95,IF($A$1='Inputs PL Final Decision 2004'!$A$124,'Inputs PL Final Decision 2004'!$D$95,IF($A$1='Inputs PL Final Decision 2004'!$A$125,'Inputs PL Final Decision 2004'!$E$95,IF($A$1='Inputs PL Final Decision 2004'!$A$126,'Inputs PL Final Decision 2004'!$F$95,IF($A$1='Inputs PL Final Decision 2004'!$A$127,'Inputs PL Final Decision 2004'!$G$95,'Inputs PL Final Decision 2004'!$H$95)))))","v":3.9E-2}]
[]
[]
[]
[null,null,null,null,2004,{"$f":"E182+1","v":2005},2006,2007,2008,2009,2010,2011,2012,2013,2014,2015,{"$f":"P182+1","v":2016},{"$f":"Q182+1","v":2017},{"$f":"R182+1","v":2018},{"$f":"S182+1","v":2019},{"$f":"T182+1","v":2020},{"$f":"U182+1","v":2021},{"$f":"V182+1","v":2022},{"$f":"W182+1","v":2023},{"$f":"X182+1","v":2024},{"$f":"Y182+1","v":2025},{"$f":"Z182+1","v":2026},{"$f":"AA182+1","v":2027},{"$f":"AB182+1","v":2028},{"$f":"AC182+1","v":2029},{"$f":"AD182+1","v":2030},{"$f":"AE182+1","v":2031},{"$f":"AF182+1","v":2032},{"$f":"AG182+1","v":2033},{"$f":"AH182+1","v":2034},{"$f":"AI182+1","v":2035},{"$f":"AJ182+1","v":2036},{"$f":"AK182+1","v":2037},{"$f":"AL182+1","v":2038},{"$f":"AM182+1","v":2039},{"$f":"AN182+1","v":2040}]
["RAB for Return",null,null,null,{"$f":"E$127/$B177*$B176/$B177","v":20.34116266334296},22.698293100726051,21.999884082242168,21.301475063758293,20.603066045274414,19.904657026790535,19.206248008306659,18.507838989822776,17.809429971338901,17.111020952855021,16.412611934371142,15.714202915887267,{"$f":"Q$127/$B177*$B176/$B177","v":15.015793897403388},14.317384878919508,13.618975860435631,12.920566841951752,12.222157823467873,11.523748804983994,10.825339786500114,10.126930768016237,9.4285217495323597,8.7301127310484805,8.0317037125646014,7.3332946940807231,6.6348856755968439,5.9364766571129666,5.2380676386290883,4.53965862014521,3.8412496016613309,3.1428405831774526,2.4444315646935748,1.7460225462096959,1.0476135277258176,0.52380676386290881,0.17460225462096962,0,0]
["Depreciation",null,null,null,{"$f":"IF(E183=0,0,$B$176*$B$178/$B$177/$B$177)","v":0.69840901848387849},0.69840901848387849,0.69840901848387849,0.69840901848387849,0.69840901848387849,0.69840901848387849,0.69840901848387849,0.69840901848387849,0.69840901848387849,0.69840901848387849,0.69840901848387849,0.69840901848387849,{"$f":"IF(Q183=0,0,$B$176*$B$178/$B$177/$B$177)","v":0.69840901848387849},0.69840901848387849,0.69840901848387849,0.69840901848387849,0.69840901848387849,0.69840901848387849,0.69840901848387849,0.69840901848387849,0.69840901848387849,0.69840901848387849,0.69840901848387849,0.69840901848387849,0.69840901848387849,0.69840901848387849,0.69840901848387849,0.69840901848387849,0.69840901848387849,0.69840901848387849,0.69840901848387849,0.69840901848387849,0.69840901848387849,0.69840901848387849,0.69840901848387849,0,0]
[]
[]
[]
["Poles & Brackets",null,null,{"$f":"'Inputs PL Final Decision 2004'!$B$88","v":"Location of selected public lighting assets within distributors' areas (%)"},null,null,null,null,null,{"$f":"'Inputs PL Final Decision 2004'!$A$117","v":"Proportion of non-dedicated poles at 1 Jan 2001"}]
["Brackets",null,null,{"$f":"'Inputs PL Final Decision 2004'!$B$92","v":"CitiPower"},{"$f":"IF($A$1='Inputs PL Final Decision 2004'!$A$123,'Inputs PL Final Decision 2004'!$C$92,IF($A$1='Inputs PL Final Decision 2004'!$A$124,'Inputs PL Final Decision 2004'!$D$92,IF($A$1='Inputs PL Final Decision 2004'!$A$125,'Inputs PL Final Decision 2004'!$E$92,IF($A$1='Inputs PL Final Decision 2004'!$A$126,'Inputs PL Final Decision 2004'!$F$92,IF($A$1='Inputs PL Final Decision 2004'!$A$127,'Inputs PL Final Decision 2004'!$G$92,'Inputs PL Final Decision 2004'!$H$92)))))","v":0},null,null,null,null,{"$f":"IF($A$1='Inputs PL Final Decision 2004'!$A$123,'Inputs PL Final Decision 2004'!$C$117,IF($A$1='Inputs PL Final Decision 2004'!$A$124,'Inputs PL Final Decision 2004'!$D$117,IF($A$1='Inputs PL Final Decision 2004'!$A$125,'Inputs PL Final Decision 2004'!$E$117,IF($A$1='Inputs PL Final Decision 2004'!$A$126,'Inputs PL Final Decision 2004'!$F$117,IF($A$1='Inputs PL Final Decision 2004'!$A$127,'Inputs PL Final Decision 2004'!$G$117,'Inputs PL Final Decision 2004'!$H$117)))))","v":0.6107644460365671}]
["Capital cost",{"$f":"($F$234*E189+$L$234*E190+$R$234*E191+$X$234*E192)*J189","v":65.411742256291163},null,{"$f":"'Inputs PL Final Decision 2004'!$B$93","v":"Urban"},{"$f":"IF($A$1='Inputs PL Final Decision 2004'!$A$123,'Inputs PL Final Decision 2004'!$C$93,IF($A$1='Inputs PL Final Decision 2004'!$A$124,'Inputs PL Final Decision 2004'!$D$93,IF($A$1='Inputs PL Final Decision 2004'!$A$125,'Inputs PL Final Decision 2004'!$E$93,IF($A$1='Inputs PL Final Decision 2004'!$A$126,'Inputs PL Final Decision 2004'!$F$93,IF($A$1='Inputs PL Final Decision 2004'!$A$127,'Inputs PL Final Decision 2004'!$G$93,'Inputs PL Final Decision 2004'!$H$93)))))","v":0.39}]
[{"$f":"'Inputs PL Final Decision 2004'!$A$52","v":"Depreciation of dedicated street lighting pole & bracket"},{"$f":"'Inputs PL Final Decision 2004'!$B$52","v":35},null,{"$f":"'Inputs PL Final Decision 2004'!$B$94","v":"Rural"},{"$f":"IF($A$1='Inputs PL Final Decision 2004'!$A$123,'Inputs PL Final Decision 2004'!$C$94,IF($A$1='Inputs PL Final Decision 2004'!$A$124,'Inputs PL Final Decision 2004'!$D$94,IF($A$1='Inputs PL Final Decision 2004'!$A$125,'Inputs PL Final Decision 2004'!$E$94,IF($A$1='Inputs PL Final Decision 2004'!$A$126,'Inputs PL Final Decision 2004'!$F$94,IF($A$1='Inputs PL Final Decision 2004'!$A$127,'Inputs PL Final Decision 2004'!$G$94,'Inputs PL Final Decision 2004'!$H$94)))))","v":0.57099999999999995}]
[{"$f":"'Inputs PL Final Decision 2004'!$A$16","v":"Number of years from 1 January 2001"},{"$f":"'Inputs PL Final Decision 2004'!$B$16","v":4},null,{"$f":"'Inputs PL Final Decision 2004'!$B$95","v":"Remote"},{"$f":"IF($A$1='Inputs PL Final Decision 2004'!$A$123,'Inputs PL Final Decision 2004'!$C$95,IF($A$1='Inputs PL Final Decision 2004'!$A$124,'Inputs PL Final Decision 2004'!$D$95,IF($A$1='Inputs PL Final Decision 2004'!$A$125,'Inputs PL Final Decision 2004'!$E$95,IF($A$1='Inputs PL Final Decision 2004'!$A$126,'Inputs PL Final Decision 2004'!$F$95,IF($A$1='Inputs PL Final Decision 2004'!$A$127,'Inputs PL Final Decision 2004'!$G$95,'Inputs PL Final Decision 2004'!$H$95)))))","v":3.9E-2}]
[]
[]
[]
[null,null,null,null,2004,{"$f":"E196+1","v":2005},2006,2007,2008,2009,2010,2011,2012,2013,2014,2015,{"$f":"P196+1","v":2016},{"$f":"Q196+1","v":2017},{"$f":"R196+1","v":2018},{"$f":"S196+1","v":2019},{"$f":"T196+1","v":2020},{"$f":"U196+1","v":2021},{"$f":"V196+1","v":2022},{"$f":"W196+1","v":2023},{"$f":"X196+1","v":2024},{"$f":"Y196+1","v":2025},{"$f":"Z196+1","v":2026},{"$f":"AA196+1","v":2027},{"$f":"AB196+1","v":2028},{"$f":"AC196+1","v":2029},{"$f":"AD196+1","v":2030},{"$f":"AE196+1","v":2031},{"$f":"AF196+1","v":2032},{"$f":"AG196+1","v":2033},{"$f":"AH196+1","v":2034},{"$f":"AI196+1","v":2035},{"$f":"AJ196+1","v":2036},{"$f":"AK196+1","v":2037},{"$f":"AL196+1","v":2038},{"$f":"AM196+1","v":2039},{"$f":"AN196+1","v":2040}]
["RAB for Return",null,null,null,{"$f":"E$127/$B191*$B190/$B191","v":6.2207901819248335},6.9416542802594705,6.7280649177899488,6.5144755553204261,6.3008861928509035,6.0872968303813808,5.8737074679118599,5.6601181054423373,5.4465287429728146,5.232939380503292,5.0193500180337711,4.8057606555642494,{"$f":"Q$127/$B191*$B190/$B191","v":4.5921712930947267},4.3785819306252041,4.1649925681556823,3.9514032056861601,3.7378138432166379,3.5242244807471153,3.3106351182775935,3.0970457558080713,2.8834563933385495,2.6698670308690269,2.4562776683995051,2.2426883059299825,2.0290989434604607,1.8155095809909383,1.6019202185214161,1.3883308560518941,1.1747414935823719,0.96115213111284969,0.7475627686433276,0.53397340617380529,0.32038404370428325,0.16019202185214163,5.3397340617380544E-2,0,0]
["Depreciation",null,null,null,{"$f":"IF(E197=0,0,$B$190*$B$192/$B$191/$B$191)","v":0.21358936246952218},0.21358936246952218,0.21358936246952218,0.21358936246952218,0.21358936246952218,0.21358936246952218,0.21358936246952218,0.21358936246952218,0.21358936246952218,0.21358936246952218,0.21358936246952218,0.21358936246952218,{"$f":"IF(Q197=0,0,$B$190*$B$192/$B$191/$B$191)","v":0.21358936246952218},0.21358936246952218,0.21358936246952218,0.21358936246952218,0.21358936246952218,0.21358936246952218,0.21358936246952218,0.21358936246952218,0.21358936246952218,0.21358936246952218,0.21358936246952218,0.21358936246952218,0.21358936246952218,0.21358936246952218,0.21358936246952218,0.21358936246952218,0.21358936246952218,0.21358936246952218,0.21358936246952218,0.21358936246952218,0.21358936246952218,0.21358936246952218,0.21358936246952218,0,0]
[]
[]
[]
[]
[]
[]
[]
[null,"CitiPower",null,null,null,null,null,"Urban",null,null,null,null,null,"Rural",null,null,null,null,null,"Remote"]
[]
[null,"Unit rate","Number","Hours","Cost","Annualised",null,"Unit rate","Number","Hours","Cost","Annualised",null,"Unit rate","Number","Hours","Cost","Annualised",null,"Unit rate","Number","Hours","Cost","Annualised"]
[null,null,null,null,null," cost",null,null,null,null,null," cost",null,null,null,null,null," cost",null,null,null,null,null," cost"]
["MV80"]
["Luminaires "]
["Material & misc",{"$f":"'Inputs PL Final Decision 2004'!$B$21+'Inputs PL Final Decision 2004'!$B$22","v":159.55000000000001},{"$f":"'Inputs PL Final Decision 2004'!$B$24","v":16},null,{"$f":"B212*C212","v":2552.8000000000002},{"$f":"(E212+E213+E214)/C212","v":240.24687500000002},null,{"$f":"'Inputs PL Final Decision 2004'!$B$21+'Inputs PL Final Decision 2004'!$B$22","v":159.55000000000001},{"$f":"'Inputs PL Final Decision 2004'!$B$24","v":16},null,{"$f":"H212*I212","v":2552.8000000000002},{"$f":"(K212+K213+K214)/I212","v":240.24687500000002},null,{"$f":"('Inputs PL Final Decision 2004'!$B$21+'Inputs PL Final Decision 2004'!$B$22)*(1+'Inputs PL Final Decision 2004'!$B$10)","v":167.52750000000003},{"$f":"'Inputs PL Final Decision 2004'!$B$25","v":13},null,{"$f":"N212*O212","v":2177.8575000000005},{"$f":"(Q212+Q213+Q214)/O212","v":273.2544230769231},null,{"$f":"('Inputs PL Final Decision 2004'!$B$21+'Inputs PL Final Decision 2004'!$B$22)*(1+'Inputs PL Final Decision 2004'!$B$10)","v":167.52750000000003},{"$f":"'Inputs PL Final Decision 2004'!$B$26","v":10},null,{"$f":"T212*U212","v":1675.2750000000003},{"$f":"(W212+W213+W214)/U212","v":304.97250000000003}]
["Crew costs",{"$f":"'Inputs PL Final Decision 2004'!$B$11","v":60},{"$f":"'Inputs PL Final Decision 2004'!$B$23","v":2},{"$f":"'Inputs PL Final Decision 2004'!$B$14","v":8.33},{"$f":"B213*C213*D213","v":999.6},null,null,{"$f":"'Inputs PL Final Decision 2004'!$B$11","v":60},{"$f":"'Inputs PL Final Decision 2004'!$B$23","v":2},{"$f":"'Inputs PL Final Decision 2004'!$B$14","v":8.33},{"$f":"H213*I213*J213","v":999.6},null,null,{"$f":"'Inputs PL Final Decision 2004'!$B$11","v":60},{"$f":"'Inputs PL Final Decision 2004'!$B$23","v":2},{"$f":"'Inputs PL Final Decision 2004'!$B$14","v":8.33},{"$f":"N213*O213*P213","v":999.6},null,null,{"$f":"'Inputs PL Final Decision 2004'!$B$11","v":60},{"$f":"'Inputs PL Final Decision 2004'!$B$23","v":2},{"$f":"'Inputs PL Final Decision 2004'!$B$14","v":8.33},{"$f":"T213*U213*V213","v":999.6}]
["Elevated platform costs",{"$f":"'Inputs PL Final Decision 2004'!$B$12","v":35},1,{"$f":"'Inputs PL Final Decision 2004'!$B$14","v":8.33},{"$f":"B214*C214*D214","v":291.55},null,null,{"$f":"'Inputs PL Final Decision 2004'!$B$12","v":35},1,{"$f":"'Inputs PL Final Decision 2004'!$B$14","v":8.33},{"$f":"H214*I214*J214","v":291.55},null,null,{"$f":"'Inputs PL Final Decision 2004'!$B$13","v":45},1,{"$f":"'Inputs PL Final Decision 2004'!$B$14","v":8.33},{"$f":"N214*O214*P214","v":374.85},null,null,{"$f":"'Inputs PL Final Decision 2004'!$B$13","v":45},1,{"$f":"'Inputs PL Final Decision 2004'!$B$14","v":8.33},{"$f":"T214*U214*V214","v":374.85}]
[]
["S-HP 150"]
["Luminaires "]
["Material & misc",{"$f":"'Inputs PL Final Decision 2004'!$B$31+'Inputs PL Final Decision 2004'!$B$32","v":189.64},{"$f":"'Inputs PL Final Decision 2004'!$B$35","v":16},null,{"$f":"B218*C218","v":3034.24},{"$f":"(E218+E219+E220)/C218","v":291.16187500000001},null,{"$f":"'Inputs PL Final Decision 2004'!$B$31+'Inputs PL Final Decision 2004'!$B$32","v":189.64},{"$f":"'Inputs PL Final Decision 2004'!$B$35","v":16},null,{"$f":"H218*I218","v":3034.24},{"$f":"(K218+K219+K220)/I218","v":275.54312499999997},null,{"$f":"('Inputs PL Final Decision 2004'!$B$31+'Inputs PL Final Decision 2004'!$B$32)*(1+'Inputs PL Final Decision 2004'!$B$10)","v":199.12199999999999},{"$f":"'Inputs PL Final Decision 2004'!$B$36","v":13},null,{"$f":"N218*O218","v":2588.5859999999998},{"$f":"(Q218+Q219+Q220)/O218","v":304.84892307692303},null,{"$f":"('Inputs PL Final Decision 2004'!$B$31+'Inputs PL Final Decision 2004'!$B$32)*(1+'Inputs PL Final Decision 2004'!$B$10)","v":199.12199999999999},{"$f":"'Inputs PL Final Decision 2004'!$B$37","v":10},null,{"$f":"T218*U218","v":1991.2199999999998},{"$f":"(W218+W219+W220)/U218","v":336.56699999999995}]
["Crew costs",{"$f":"'Inputs PL Final Decision 2004'!$B$11","v":60},{"$f":"'Inputs PL Final Decision 2004'!$B$34","v":2.5},{"$f":"'Inputs PL Final Decision 2004'!$B$14","v":8.33},{"$f":"D219*C219*B219","v":1249.5},null,null,{"$f":"'Inputs PL Final Decision 2004'!$B$11","v":60},{"$f":"'Inputs PL Final Decision 2004'!$B$33","v":2},{"$f":"'Inputs PL Final Decision 2004'!$B$14","v":8.33},{"$f":"J219*I219*H219","v":999.6},null,null,{"$f":"'Inputs PL Final Decision 2004'!$B$11","v":60},{"$f":"'Inputs PL Final Decision 2004'!$B$33","v":2},{"$f":"'Inputs PL Final Decision 2004'!$B$14","v":8.33},{"$f":"P219*O219*N219","v":999.6},null,null,{"$f":"'Inputs PL Final Decision 2004'!$B$11","v":60},{"$f":"'Inputs PL Final Decision 2004'!$B$33","v":2},{"$f":"'Inputs PL Final Decision 2004'!$B$14","v":8.33},{"$f":"V219*U219*T219","v":999.6}]
["Elevated platform vehicle costs",{"$f":"'Inputs PL Final Decision 2004'!$B$13","v":45},1,{"$f":"'Inputs PL Final Decision 2004'!$B$14","v":8.33},{"$f":"D220*C220*B220","v":374.85},null,null,{"$f":"'Inputs PL Final Decision 2004'!$B$13","v":45},1,{"$f":"'Inputs PL Final Decision 2004'!$B$14","v":8.33},{"$f":"J220*I220*H220","v":374.85},null,null,{"$f":"'Inputs PL Final Decision 2004'!$B$13","v":45},1,{"$f":"'Inputs PL Final Decision 2004'!$B$14","v":8.33},{"$f":"P220*O220*N220","v":374.85},null,null,{"$f":"'Inputs PL Final Decision 2004'!$B$13","v":45},1,{"$f":"'Inputs PL Final Decision 2004'!$B$14","v":8.33},{"$f":"V220*U220*T220","v":374.85}]
[]
["S-HP 250"]
["Luminaires "]
["Material & misc",{"$f":"'Inputs PL Final Decision 2004'!$B$42+'Inputs PL Final Decision 2004'!$B$43","v":192.44},{"$f":"'Inputs PL Final Decision 2004'!$B$46","v":16},null,{"$f":"B224*C224","v":3079.04},{"$f":"(E224+E225+E226)/C224","v":293.96187500000002},null,{"$f":"'Inputs PL Final Decision 2004'!$B$42+'Inputs PL Final Decision 2004'!$B$43","v":192.44},{"$f":"'Inputs PL Final Decision 2004'!$B$46","v":16},null,{"$f":"H224*I224","v":3079.04},{"$f":"(K224+K225+K226)/I224","v":278.34312499999999},null,{"$f":"('Inputs PL Final Decision 2004'!$B$42+'Inputs PL Final Decision 2004'!$B$43)*(1+'Inputs PL Final Decision 2004'!$B$10)","v":202.06200000000001},{"$f":"'Inputs PL Final Decision 2004'!$B$47","v":13},null,{"$f":"N224*O224","v":2626.806},{"$f":"(Q224+Q225+Q226)/O224","v":307.78892307692308},null,{"$f":"('Inputs PL Final Decision 2004'!$B$42+'Inputs PL Final Decision 2004'!$B$43)*(1+'Inputs PL Final Decision 2004'!$B$10)","v":202.06200000000001},{"$f":"'Inputs PL Final Decision 2004'!$B$48","v":10},null,{"$f":"T224*U224","v":2020.6200000000001},{"$f":"(W224+W225+W226)/U224","v":339.50700000000001}]
["Crew costs",{"$f":"'Inputs PL Final Decision 2004'!$B$11","v":60},{"$f":"'Inputs PL Final Decision 2004'!$B$45","v":2.5},{"$f":"'Inputs PL Final Decision 2004'!$B$14","v":8.33},{"$f":"D225*C225*B225","v":1249.5},null,null,{"$f":"'Inputs PL Final Decision 2004'!$B$11","v":60},{"$f":"'Inputs PL Final Decision 2004'!$B$44","v":2},{"$f":"'Inputs PL Final Decision 2004'!$B$14","v":8.33},{"$f":"J225*I225*H225","v":999.6},null,null,{"$f":"'Inputs PL Final Decision 2004'!$B$11","v":60},{"$f":"'Inputs PL Final Decision 2004'!$B$44","v":2},{"$f":"'Inputs PL Final Decision 2004'!$B$14","v":8.33},{"$f":"P225*O225*N225","v":999.6},null,null,{"$f":"'Inputs PL Final Decision 2004'!$B$11","v":60},{"$f":"'Inputs PL Final Decision 2004'!$B$44","v":2},{"$f":"'Inputs PL Final Decision 2004'!$B$14","v":8.33},{"$f":"V225*U225*T225","v":999.6}]
["Elevated platform vehicle costs",{"$f":"'Inputs PL Final Decision 2004'!$B$13","v":45},1,{"$f":"'Inputs PL Final Decision 2004'!$B$14","v":8.33},{"$f":"D226*C226*B226","v":374.85},null,null,{"$f":"'Inputs PL Final Decision 2004'!$B$13","v":45},1,{"$f":"'Inputs PL Final Decision 2004'!$B$14","v":8.33},{"$f":"J226*I226*H226","v":374.85},null,null,{"$f":"'Inputs PL Final Decision 2004'!$B$13","v":45},1,{"$f":"'Inputs PL Final Decision 2004'!$B$14","v":8.33},{"$f":"P226*O226*N226","v":374.85},null,null,{"$f":"'Inputs PL Final Decision 2004'!$B$13","v":45},1,{"$f":"'Inputs PL Final Decision 2004'!$B$14","v":8.33},{"$f":"V226*U226*T226","v":374.85}]
[]
["Dedicated poles"]
["Material",{"$f":"'Inputs PL Final Decision 2004'!$B$53","v":500},{"$f":"'Inputs PL Final Decision 2004'!$B$54","v":4},null,{"$f":"C229*B229","v":2000},{"$f":"(E229+E230+E231)/C229","v":822.78750000000002},null,{"$f":"'Inputs PL Final Decision 2004'!$B$53","v":500},{"$f":"'Inputs PL Final Decision 2004'!$B$54","v":4},null,{"$f":"I229*H229","v":2000},{"$f":"(K229+K230+K231)/I229","v":822.78750000000002},null,{"$f":"'Inputs PL Final Decision 2004'!$B$53","v":500},{"$f":"'Inputs PL Final Decision 2004'!$B$54","v":4},null,{"$f":"O229*N229","v":2000},{"$f":"(Q229+Q230+Q231)/O229","v":843.61249999999995},null,{"$f":"'Inputs PL Final Decision 2004'!$B$53","v":500},{"$f":"'Inputs PL Final Decision 2004'!$B$54","v":4},null,{"$f":"U229*T229","v":2000},{"$f":"(W229+W230+W231)/U229","v":843.61249999999995}]
["Crew costs",{"$f":"'Inputs PL Final Decision 2004'!$B$11","v":60},{"$f":"'Inputs PL Final Decision 2004'!$B$23","v":2},{"$f":"'Inputs PL Final Decision 2004'!$B$14","v":8.33},{"$f":"B230*C230*D230","v":999.6},null,null,{"$f":"'Inputs PL Final Decision 2004'!$B$11","v":60},{"$f":"'Inputs PL Final Decision 2004'!$B$23","v":2},{"$f":"'Inputs PL Final Decision 2004'!$B$14","v":8.33},{"$f":"H230*I230*J230","v":999.6},null,null,{"$f":"'Inputs PL Final Decision 2004'!$B$11","v":60},{"$f":"'Inputs PL Final Decision 2004'!$B$23","v":2},{"$f":"'Inputs PL Final Decision 2004'!$B$14","v":8.33},{"$f":"N230*O230*P230","v":999.6},null,null,{"$f":"'Inputs PL Final Decision 2004'!$B$11","v":60},{"$f":"'Inputs PL Final Decision 2004'!$B$23","v":2},{"$f":"'Inputs PL Final Decision 2004'!$B$14","v":8.33},{"$f":"T230*U230*V230","v":999.6}]
["Elevated platform costs",{"$f":"'Inputs PL Final Decision 2004'!$B$12","v":35},1,{"$f":"'Inputs PL Final Decision 2004'!$B$14","v":8.33},{"$f":"B231*C231*D231","v":291.55},null,null,{"$f":"'Inputs PL Final Decision 2004'!$B$12","v":35},1,{"$f":"'Inputs PL Final Decision 2004'!$B$14","v":8.33},{"$f":"H231*I231*J231","v":291.55},null,null,{"$f":"'Inputs PL Final Decision 2004'!$B$13","v":45},1,{"$f":"'Inputs PL Final Decision 2004'!$B$14","v":8.33},{"$f":"N231*O231*P231","v":374.85},null,null,{"$f":"'Inputs PL Final Decision 2004'!$B$13","v":45},1,{"$f":"'Inputs PL Final Decision 2004'!$B$14","v":8.33},{"$f":"T231*U231*V231","v":374.85}]
[]
["Brackets"]
["Material",{"$f":"'Inputs PL Final Decision 2004'!$B$55","v":40},{"$f":"'Inputs PL Final Decision 2004'!$B$56","v":20},null,{"$f":"C234*B234","v":800},{"$f":"(E234+E235+E236)/C234","v":104.5575},null,{"$f":"'Inputs PL Final Decision 2004'!$B$55","v":40},{"$f":"'Inputs PL Final Decision 2004'!$B$56","v":20},null,{"$f":"I234*H234","v":800},{"$f":"(K234+K235+K236)/I234","v":104.5575},null,{"$f":"'Inputs PL Final Decision 2004'!$B$55","v":40},{"$f":"'Inputs PL Final Decision 2004'!$B$56","v":20},null,{"$f":"O234*N234","v":800},{"$f":"(Q234+Q235+Q236)/O234","v":108.7225},null,{"$f":"'Inputs PL Final Decision 2004'!$B$55","v":40},{"$f":"'Inputs PL Final Decision 2004'!$B$56","v":20},null,{"$f":"U234*T234","v":800},{"$f":"(W234+W235+W236)/U234","v":108.7225}]
["Crew costs",{"$f":"'Inputs PL Final Decision 2004'!$B$11","v":60},{"$f":"'Inputs PL Final Decision 2004'!$B$23","v":2},{"$f":"'Inputs PL Final Decision 2004'!$B$14","v":8.33},{"$f":"B235*C235*D235","v":999.6},null,null,{"$f":"'Inputs PL Final Decision 2004'!$B$11","v":60},{"$f":"'Inputs PL Final Decision 2004'!$B$23","v":2},{"$f":"'Inputs PL Final Decision 2004'!$B$14","v":8.33},{"$f":"H235*I235*J235","v":999.6},null,null,{"$f":"'Inputs PL Final Decision 2004'!$B$11","v":60},{"$f":"'Inputs PL Final Decision 2004'!$B$23","v":2},{"$f":"'Inputs PL Final Decision 2004'!$B$14","v":8.33},{"$f":"N235*O235*P235","v":999.6},null,null,{"$f":"'Inputs PL Final Decision 2004'!$B$11","v":60},{"$f":"'Inputs PL Final Decision 2004'!$B$23","v":2},{"$f":"'Inputs PL Final Decision 2004'!$B$14","v":8.33},{"$f":"T235*U235*V235","v":999.6}]
["Elevated platform costs",{"$f":"'Inputs PL Final Decision 2004'!$B$12","v":35},1,{"$f":"'Inputs PL Final Decision 2004'!$B$14","v":8.33},{"$f":"B236*C236*D236","v":291.55},null,null,{"$f":"'Inputs PL Final Decision 2004'!$B$12","v":35},1,{"$f":"'Inputs PL Final Decision 2004'!$B$14","v":8.33},{"$f":"H236*I236*J236","v":291.55},null,null,{"$f":"'Inputs PL Final Decision 2004'!$B$13","v":45},1,{"$f":"'Inputs PL Final Decision 2004'!$B$14","v":8.33},{"$f":"N236*O236*P236","v":374.85},null,null,{"$f":"'Inputs PL Final Decision 2004'!$B$13","v":45},1,{"$f":"'Inputs PL Final Decision 2004'!$B$14","v":8.33},{"$f":"T236*U236*V236","v":374.85}]
[" "]

{"sheet":"Inputs PL Final Decision 2004","index":14,"n_rows":128,"n_cols":8,"rows_kept":128,"cut":false,"hidden":false,"merged":[[116,0,116,1],[107,5,107,6],[107,7,108,7],[113,0,113,1],[114,0,114,1],[107,1,108,1],[107,2,108,2],[107,3,108,3],[107,4,108,4],[88,5,88,6],[88,7,89,7],[88,1,89,1],[88,2,89,2],[88,3,89,3],[88,4,89,4]]}
[{"$f":"'Inputs PL Final Decision 2004'!$A$125","v":"Powercor"}]
[]
["Final Decision - Cost Build-up Model 2004"]
[]
[]
[]
["Input parameters"]
[]
["Inputs - all lamps"]
["Material premium for rural areas",0.05]
["Labour rate (per hour)",60]
["Elevated platform vehicle (per hour) - urban MV",35]
["Elevated platform vehicle (per hour) - rural MV, S-HP",45]
["Number of hours in a day",8.33]
["Rate of return (per annum)",9.5000000000000001E-2]
["Number of years from 1 January 2001",4]
[]
["Inputs - MV80"]
[]
["Depreciation period",20,"years"]
["Unit cost - luminaire",158.55000000000001]
["Unit cost - miscellaneous materials (bulk lamp)",1]
["Number of men in crew",2]
["Number of luminaires replaced per day - urban",16]
["Number of luminaires replaced per day - rural",13]
["Number of luminaires replaced per day - remote",10]
[]
["Inputs - S-HP150"]
[]
["Depreciation period ",20,"years"]
["Unit cost - luminaire",187.64]
["Unit cost - miscellaneous materials",2]
["Number of men in crew - repairs (exc CitiPower)",2]
["Number of men in crew - repairs (CitiPower)",2.5]
["Number of luminaires replaced per day - urban",16]
["Number of luminaires replaced per day - rural",13]
["Number of luminaires replaced per day - remote",10]
[]
["Inputs - S-HP250"]
[]
["Depreciation period ",{"$f":"B30","v":20},"years"]
["Unit cost - luminaire",190.44]
["Unit cost - miscellaneous materials",2]
["Number of men in crew - repairs (exc CitiPower)",{"$f":"B33","v":2}]
["Number of men in crew - repairs (CitiPower)",{"$f":"B34","v":2.5}]
["Number of luminaires replaced per day - urban",{"$f":"B35","v":16}]
["Number of luminaires replaced per day - rural",{"$f":"B36","v":13}]
["Number of luminaires replaced per day - remote",{"$f":"B37","v":10}]
[]
["Dedicated street lighting poles"]
[]
["Depreciation of dedicated street lighting pole & bracket",35,"years"]
["Cost of pole & bracket",500]
["Number of poles & brackets replaced per day",4]
["Cost of bracket",40]
["Number of brackets replaced per day",20]
[]
[]
[]
[]
[]
[]
["DEPRECIATION PROFILE"]
[]
["20 year asset life"]
[null,2001,2002,2003,2004]
["New assets in 2001","10/20","19/20","18/20","17/20","Assume half the asset base in first year"]
["New assets in 2002",null,"10/20","19/20","18/20","In subsequent years - depreciation of 1/20 per year"]
["New assets in 2003",null,null,"10/20","19/20"]
["New assets in 2004",null,null,null,"10/20"]
[]
["Total","10/20","29/20","47/20","64/20"]
[]
["35 year asset life"]
[null,2001,2002,2003,2004]
["New assets in 2001","17.5/35","34/35","33/35","32/35","Assume half the asset base in first year"]
["New assets in 2002",null,"17.5/35","34/35","33/35","In subsequent years - depreciation of 1/35 per year"]
["New assets in 2003",null,null,"17.5/35","34/35"]
["New assets in 2004",null,null,null,"17.5/35"]
[]
["Total","17.5/35","51.5/35","84.5/35","116.5/35"]
[]
[]
[]
[]
[]
[]
[null,"Location of selected public lighting assets within distributors' areas (%)"]
[null,null,"AGL (%)","CitiPower (%)","Powercor (%)","TXU (%)",null,"United Energy (%)"]
[null,null,null,null,null,"central","north/east"]
[null,"MV 80 Watt"]
[null,"CitiPower",0,1,0,0,0,0]
[null,"Urban",0.97,0,0.39,0.96,0.35,0.84]
[null,"Rural",0.03,0,0.57099999999999995,0.04,0.53,0.16]
[null,"Remote",0,0,3.9E-2,0,0.12,0]
[null,"S-HP 150 Watt"]
[null,"CitiPower",0,1,0,0,0,0]
[null,"Urban",0.98,0,0.52,0.94,0.3,0.84]
[null,"Rural",0.02,0,0.441,0.06,0.63,0.16]
[null,"Remote",0,0,3.9E-2,0,7.0000000000000007E-2,0]
[null,"S-HP 250 Watt"]
[null,"CitiPower",0,1,0,0,0,0]
[null,"Urban",0.96,0,0.48,0.9,0.37,0.84]
[null,"Rural",0.04,0,0.48099999999999998,0.1,0.56999999999999995,0.16]
[null,"Remote",0,0,3.9E-2,0,0.06,0]
[]
[null,"Proportion of lights installed at 1 January 2001 (%)"]
[null,null,"AGL","CitiPower","Powercor","TXU",null,"United Energy"]
[null,null,null,null,null,"central","north/east"]
[null,"MV 80 Watt",0.905787037037037,1,0.86777777777777776,0.88453792189886593,0.88441954863731531,0.89212199870214148]
[null,"S-HP 150 Watt",0.92852830188679247,0.97046808510638294,0.79574999999999996,0.9271778402248092,0.92717784022480954,0.76780200027653589]
[null,"S-HP 250 Watt",0.97372093023255812,1,0.8570165745856354,0.93238356164383551,0.93238356164383573,0.79881039340498805]
[]
["Proportion of lights on dedicated poles",null,0.1908204,0.19633080440438641,0.28800286795458091,0.38119062500000001,0.38296744016378254,0.2370560408218817]
["Proportion of dedicated poles at 1 Jan 2001",null,0.91293333333333337,0.91293333333333337,0.88888888888888884,0.89230769230769236,0.88888888888888884,0.91293333333333337]
[]
["Proportion of non-dedicated poles at 1 Jan 2001",null,0.74134150899999995,0.85329845683448124,0.6107644460365671,0.54998659800000005,0.54983737742466199,0.66538387625035467]
[]
[]
[]
[]
[]
["Jemena",{"$f":"C108","v":"AGL"}]
["Citipower",{"$f":"D108","v":"CitiPower"}]
["Powercor",{"$f":"E108","v":"Powercor"}]
["SP AusNet - Central",{"$f":"F108","v":"TXU"},{"$f":"F109","v":"central"}]
["SP AusNet - North/East",{"$f":"F108","v":"TXU"},{"$f":"G109","v":"north/east"}]
["United Energy",{"$f":"H108","v":"United Energy"}]